{"text_format":"1","workbook":"xlsx","n_sheets":40,"sheets":["Rates Summary","Summary Bill Impacts-Settlement","Bill Impact Resi 204kWh","Bill Impact Resi 100kWh","Bill Impact Resi 250kWh","Bill Impact Resi 500kWh","Bill Impact Resi 800kWh","Bill Impact Resi 1000kWh","Bill Impact Resi 1500kWh","Bill Impact Resi 2000kWh","Bill Impact GS < 50 2000kWh","Bill Impact GS <50 1000kWh","Bill Impact GS < 50 5000kWh","Bill Impact GS < 50 10000kWh","Bill Impact GS < 50 15000kWh","Bill Impact GS50-4999 60kW","Bill Impact GS50-4999 70kW","Bill Impact GS50-4999 500kW","Bill Impact GS50-4999 1000kW","Bill Impact Large Use 8000kW","Bill Impact Large Use 5500kW","Bill Impact USL 750kWh","Bill Impact USL 150kWh","Bill Impact St Light 375kW","Bill Impact St Light 1kW","Consumption Levels","App. 2-Z_2016 Tariff","App. 2-Z_2017 Tariff","App. 2-Z_2018 Tariff","App. 2-Z_2019 Tariff","App. 2-Z_2020 Tariff","LDC Info","App.2-FA Proposed REG Inves (2","App.2-FB Calc of REG Improv (2","App.2-FC Calc of REG Expans (2","App.2-I LF_CDM_WF_OLD","lists","lists2","Sheet19","Sheet1"],"not_rendered":{"charts":0,"images":2,"macros":1,"external_links":8,"defined_names":1944,"comments":0,"pivot_tables":0},"unopened":[],"bounds":{"document_bytes":16777216,"sheet_cells":100000,"rows_first":2000,"rows_last":500,"rows_between":2000,"halvings":0,"cell_chars":16384,"cell_head_chars":4096},"cells_cut":0,"cells_raw":0,"read":"whole","date_system":"1900"}

{"sheet":"Rates Summary","index":0,"n_rows":47,"n_cols":14,"rows_kept":47,"cut":false,"hidden":false,"merged":[]}
[null,"2016 Rates Summary - changes and additions for 2016"]
[]
[]
[null,"Rate Rider Description","Residential","General Service < 50 kW","General Service 50 to 4,999 kW","Large Use","Unmetered Scattered Load","Street Lighting","Standby Power Approved on a Final Basis","General Service 50 to 4,999 excluding WMP","Recovery Period","Metric"]
[1,"Disposition of Deferral/Variance Accounts (2016) ",6.9999999999999999E-4,-6.9999999999999999E-4,0.70479999999999998,-0.56030000000000002,2.9999999999999997E-4,14.8985,0,-1.0947,1,"$ per kWh/kW"]
[2,"Disposition of Global Adjustment Sub-Account (2016) ",2.0500000000000001E-2,2.0500000000000001E-2,0,0,2.0500000000000001E-2,7.84,0,7.4691999999999998,0.66666666666666663,"$ per kWh/kW",null,"effective May 1 2016 to Dec 31 2016"]
[3,"Lost Revenue Adjustment Mechanism Variance Account (LRAMVA) (2016)",2.9999999999999997E-4,8.0000000000000004E-4,2.93E-2,2.6800000000000001E-2,0,7.0278999999999998,0,0,1,"$ per kWh/kW"]
[4,"Dispostion of accounting changes under CGAAP (2016)",-1.0800000000000001E-2,-6.1999999999999998E-3,-1.0874999999999999,-0.55130000000000001,-6.0000000000000001E-3,-6.6951999999999998,0,0,1,"$ per kWh/kW"]
[5,"Disposition of Incremental Capital Cost Sub-Account (2016)",4.0000000000000002E-4,2.0000000000000001E-4,0.04,2.0299999999999999E-2,2.0000000000000001E-4,0.246,0,0,1,"$ per kWh/kW"]
[6,"Recovery of Residual Smart Meter Capital (2016)",0.25,0.43,0,0,0,0,0,0,1,"$"]
[7,"Recovery of Stranded Meter Assets (2016)",3.69,6.4,0,0,0,0,0,0,1,"$"]
[null,null,"Note not shown above is the tax change 2015 and global adjustment 2015 rate riders that end Apr 30, 2016. These are in bill impacts and tariff of rates and charges."]
[]
[null,"Pass-Through Rates 2016","Residential","General Service < 50 kW","General Service 50 to 4,999 kW","Large Use","Unmetered Scattered Load","Street Lighting","Standby Power Approved on a Final Basis"]
[null,"Low Voltage Service Rate",1.1999999999999999E-3,1.1000000000000001E-3,0.46629999999999999,0.56189999999999996,1.1999999999999999E-3,0.33679999999999999,0,0,null,"$ per kWh/kW"]
[null,"Smart Meter Entity Charge",0.78800000000000003,0.78800000000000003,0,0,0,0,0,0,null,"$"]
[null,"RTSR - Network",7.1000000000000004E-3,6.3E-3,2.7797000000000001,3.3492000000000002,7.1000000000000004E-3,2.0078,0,0,null,"$ per kWh/kW"]
[null,"RTSR - Line and Transformation Connection",5.5999999999999999E-3,5.1000000000000004E-3,2.2225000000000001,2.6779999999999999,5.5999999999999999E-3,1.6052999999999999,0,0,null,"$ per kWh/kW"]
[null,"Wholesale Market Service Charge (WMSC)",4.4000000000000003E-3,4.4000000000000003E-3,4.4000000000000003E-3,4.4000000000000003E-3,4.4000000000000003E-3,4.4000000000000003E-3,0,0,null,"$ per kWh"]
[null,"Rural and Remote Rate Protection (RRRP)",1.2999999999999999E-3,1.2999999999999999E-3,1.2999999999999999E-3,1.2999999999999999E-3,1.2999999999999999E-3,1.2999999999999999E-3,0,0,null,"$ per kWh"]
[null,"Standard Supply Service Charge",0.25,0.25,0.25,0.25,0.25,0.25,0,0,null,"$"]
[null,"Debt Retirement Charge (DRC)",0,7.0000000000000001E-3,7.0000000000000001E-3,7.0000000000000001E-3,7.0000000000000001E-3,7.0000000000000001E-3,null,null,null,"$ per kWh"]
[]
[]
[]
[null,"Distribution Rates",null,null,null,null,"PROPOSED FIXED RATES"]
[null,"Customer Class Name","Metric",2015,2016,2017,2018,2019,2020]
[null,"Residential","$",12.56,13.98,18.54,21.88,25.35,25.96]
[null,"General Service < 50 kW","$",25.85,14.27,14.59,14.94,15.22,15.4]
[null,"General Service 50 to 4999 kW","$",280.08999999999997,105.62,107.49,109.29,110.99,112.13]
[null,"Large Use","$",5164,5164,5164,5164,5164,5164]
[null,"Unmetered Scattered Load","$",11.55,5.78,5.95,6.1,6.31,6.46]
[null,"Street Lighting","$ per light",1.02,0.88,1.05,1.24,1.28,1.31]
[null,"Standby Approved on a Final Basis","Continued"]
[]
[]
[null,null,"  "]
[null,null,"  ",null,null,null,"PROPOSED VARIABLE RATES"]
[null,"Customer Class Name","Metric",2015,2016,2017,2018,2019,2020,"per"]
[null,"Residential","$ per kWh",1.54E-2,1.3899999999999999E-2,8.2000000000000007E-3,4.1999999999999997E-3,0,0,"kWh"]
[null,"General Service < 50 kW","$ per kWh",1.06E-2,1.46E-2,1.5100000000000001E-2,1.55E-2,1.61E-2,1.66E-2,"kWh"]
[null,"General Service 50 to 4999 kW","$ per kW ",2.0063,2.9849000000000001,3.101,3.2130000000000001,3.3260999999999998,3.4096000000000002,"kW"]
[null,"Large Use","$ per kW",1.0535000000000001,1.1548,1.216,1.2749999999999999,1.3339000000000001,1.377,"kW"]
[null,"Unmetered Scattered Load","$ per kWh",1.41E-2,1.15E-2,1.18E-2,1.21E-2,1.2500000000000001E-2,1.2800000000000001E-2,"kWh"]
[null,"Street Lighting","$ per kW",4.6749999999999998,9.952,11.891,14.041700000000001,14.518800000000001,14.8695,"kW"]
[null,"Standby Approved on a Final Basis","Continued"]
[null,null,""]

{"sheet":"Summary Bill Impacts-Settlement","index":1,"n_rows":41,"n_cols":10,"rows_kept":41,"cut":false,"hidden":false,"merged":[[38,1,38,2],[2,1,2,2]]}
[null,"Summary of 2016-2020 Bill Impacts* "]
[]
[null,"Customer Class",null,null,"2015 Approved","2016 Proposed","2017 Proposed","2018 Proposed","2019 Proposed","2020 Proposed"]
[null,"Residential",null,"Distribution Charge (excluding pass-through)",{"$f":"'Bill Impact Resi 204kWh'!$G$39","v":18.311200000000003},{"$f":"'Bill Impact Resi 204kWh'!$K$39","v":20.898400000000002},{"$f":"'Bill Impact Resi 204kWh'!$R$39","v":20.212799999999998},{"$f":"'Bill Impact Resi 204kWh'!$Y$39","v":22.736799999999999},{"$f":"'Bill Impact Resi 204kWh'!$AF$39","v":25.35},{"$f":"'Bill Impact Resi 204kWh'!$AM$39","v":25.96}]
[null,{"$f":"'Bill Impact Resi 204kWh'!E18","v":204},"kWh","Change in Distribution Charge",null,{"$f":"'Bill Impact Resi 204kWh'!$M$39","v":2.5871999999999993},{"$f":"'Bill Impact Resi 204kWh'!$T$39","v":-0.68560000000000443},{"$f":"'Bill Impact Resi 204kWh'!$AA$39","v":2.5240000000000009},{"$f":"'Bill Impact Resi 204kWh'!$AH$39","v":2.6132000000000026},{"$f":"'Bill Impact Resi 204kWh'!$AO$39","v":0.60999999999999943}]
[null,null,null,"% Distribution Increase",null,{"$f":"'Bill Impact Resi 204kWh'!$N$39","v":0.1412905762593385},{"$f":"'Bill Impact Resi 204kWh'!$U$39","v":-3.2806339241281839E-2},{"$f":"'Bill Impact Resi 204kWh'!$AB$39","v":0.12487136863769499},{"$f":"'Bill Impact Resi 204kWh'!$AI$39","v":0.11493262024559317},{"$f":"'Bill Impact Resi 204kWh'!$AP$39","v":2.4063116370808654E-2}]
[null,null,null,"% Increase Total Bill",null,{"$f":"'Bill Impact Resi 204kWh'!$N$66","v":9.9797967674347399E-2},{"$f":"'Bill Impact Resi 204kWh'!$U$66","v":2.934491246114573E-2},{"$f":"'Bill Impact Resi 204kWh'!$AB$66","v":5.2338554384599265E-2},{"$f":"'Bill Impact Resi 204kWh'!$AI$66","v":3.592619334127E-2},{"$f":"'Bill Impact Resi 204kWh'!$AP$66","v":1.1603203559072697E-2}]
[]
[null,"Residential",null,"Distribution Charge (excluding pass-through)",{"$f":"'Bill Impact Resi 800kWh'!$G$39","v":27.430000000000003},{"$f":"'Bill Impact Resi 800kWh'!$K$39","v":29.599999999999998},{"$f":"'Bill Impact Resi 800kWh'!$R$39","v":25.1},{"$f":"'Bill Impact Resi 800kWh'!$Y$39","v":25.24},{"$f":"'Bill Impact Resi 800kWh'!$AF$39","v":25.35},{"$f":"'Bill Impact Resi 800kWh'!$AM$39","v":25.96}]
[null,{"$f":"'Bill Impact Resi 800kWh'!E18","v":800},"kWh","Change in Distribution Charge",null,{"$f":"'Bill Impact Resi 800kWh'!$M$39","v":2.1699999999999946},{"$f":"'Bill Impact Resi 800kWh'!$T$39","v":-4.4999999999999964},{"$f":"'Bill Impact Resi 800kWh'!$AA$39","v":0.13999999999999702},{"$f":"'Bill Impact Resi 800kWh'!$AH$39","v":0.11000000000000298},{"$f":"'Bill Impact Resi 800kWh'!$AO$39","v":0.60999999999999943}]
[null,null,null,"% Distribution Increase",null,{"$f":"'Bill Impact Resi 800kWh'!$N$39","v":7.9110462996718714E-2},{"$f":"'Bill Impact Resi 800kWh'!$U$39","v":-0.15202702702702692},{"$f":"'Bill Impact Resi 800kWh'!$AB$39","v":5.5776892430277692E-3},{"$f":"'Bill Impact Resi 800kWh'!$AI$39","v":4.3581616481776142E-3},{"$f":"'Bill Impact Resi 800kWh'!$AP$39","v":2.4063116370808654E-2}]
[null,null,null,"% Increase Total Bill",null,{"$f":"'Bill Impact Resi 800kWh'!$N$66","v":3.1773205442879419E-2},{"$f":"'Bill Impact Resi 800kWh'!$U$66","v":2.789654015451699E-2},{"$f":"'Bill Impact Resi 800kWh'!$AB$66","v":1.0613190225640036E-3},{"$f":"'Bill Impact Resi 800kWh'!$AI$66","v":-5.1495128336703118E-3},{"$f":"'Bill Impact Resi 800kWh'!$AP$66","v":4.643326795245044E-3}]
[]
[null,"GS<50 kW",null,"Distribution Charge (excluding pass-through)",{"$f":"'Bill Impact GS < 50 2000kWh'!$G$39","v":50.5},{"$f":"'Bill Impact GS < 50 2000kWh'!$K$39","v":52.3},{"$f":"'Bill Impact GS < 50 2000kWh'!$R$39","v":44.790000000000006},{"$f":"'Bill Impact GS < 50 2000kWh'!$Y$39","v":45.94},{"$f":"'Bill Impact GS < 50 2000kWh'!$AF$39","v":47.42},{"$f":"'Bill Impact GS < 50 2000kWh'!$AM$39","v":48.6}]
[null,{"$f":"'Bill Impact GS < 50 2000kWh'!E18","v":2000},"kWh","Change in Distribution Charge",null,{"$f":"'Bill Impact GS < 50 2000kWh'!$M$39","v":1.7999999999999972},{"$f":"'Bill Impact GS < 50 2000kWh'!$T$39","v":-7.5099999999999909},{"$f":"'Bill Impact GS < 50 2000kWh'!$AA$39","v":1.1499999999999915},{"$f":"'Bill Impact GS < 50 2000kWh'!$AH$39","v":1.480000000000004},{"$f":"'Bill Impact GS < 50 2000kWh'!$AO$39","v":1.1799999999999997}]
[null,null,null,"% Distribution Increase",null,{"$f":"'Bill Impact GS < 50 2000kWh'!$N$39","v":3.5643564356435585E-2},{"$f":"'Bill Impact GS < 50 2000kWh'!$U$39","v":-0.14359464627151036},{"$f":"'Bill Impact GS < 50 2000kWh'!$AB$39","v":2.5675373967403246E-2},{"$f":"'Bill Impact GS < 50 2000kWh'!$AI$39","v":3.221593382673061E-2},{"$f":"'Bill Impact GS < 50 2000kWh'!$AP$39","v":2.4884015183466886E-2}]
[null,null,null,"% Increase Total Bill",null,{"$f":"'Bill Impact GS < 50 2000kWh'!$N$66","v":8.3185902258632358E-2},{"$f":"'Bill Impact GS < 50 2000kWh'!$U$66","v":1.996406240244086E-2},{"$f":"'Bill Impact GS < 50 2000kWh'!$AB$66","v":3.5785842284337794E-3},{"$f":"'Bill Impact GS < 50 2000kWh'!$AI$66","v":2.1394941769419312E-3},{"$f":"'Bill Impact GS < 50 2000kWh'!$AP$66","v":3.6510337487448636E-3}]
[]
[null,"GS 50 to 4,999 kW",null,"Distribution Charge (excluding pass-through)",{"$f":"'Bill Impact GS50-4999 60kW'!$G$39","v":399.87399999999997},{"$f":"'Bill Impact GS50-4999 60kW'!$K$39","v":288.87199999999996},{"$f":"'Bill Impact GS50-4999 60kW'!$R$39","v":293.55},{"$f":"'Bill Impact GS50-4999 60kW'!$Y$39","v":302.07},{"$f":"'Bill Impact GS50-4999 60kW'!$AF$39","v":310.55599999999998},{"$f":"'Bill Impact GS50-4999 60kW'!$AM$39","v":316.70600000000002}]
[null,{"$f":"'Bill Impact GS50-4999 60kW'!E18","v":40000},"kWh","Change in Distribution Charge",null,{"$f":"'Bill Impact GS50-4999 60kW'!$M$39","v":-111.00200000000001},{"$f":"'Bill Impact GS50-4999 60kW'!$T$39","v":4.6780000000000541},{"$f":"'Bill Impact GS50-4999 60kW'!$AA$39","v":8.5199999999999818},{"$f":"'Bill Impact GS50-4999 60kW'!$AH$39","v":8.48599999999999},{"$f":"'Bill Impact GS50-4999 60kW'!$AO$39","v":6.1500000000000341}]
[null,{"$f":"'Bill Impact GS50-4999 60kW'!E19","v":60},"kW","% Distribution Increase",null,{"$f":"'Bill Impact GS50-4999 60kW'!$N$39","v":-0.27759244161911006},{"$f":"'Bill Impact GS50-4999 60kW'!$U$39","v":1.619402365061361E-2},{"$f":"'Bill Impact GS50-4999 60kW'!$AB$39","v":2.9024016351558445E-2},{"$f":"'Bill Impact GS50-4999 60kW'!$AI$39","v":2.8092826166120403E-2},{"$f":"'Bill Impact GS50-4999 60kW'!$AP$39","v":1.9803191694895719E-2}]
[null,null,null,"% Increase Total Bill",null,{"$f":"'Bill Impact GS50-4999 60kW'!$N$66","v":-6.4882371816165334E-3},{"$f":"'Bill Impact GS50-4999 60kW'!$U$66","v":-5.9442063255106745E-2},{"$f":"'Bill Impact GS50-4999 60kW'!$AB$66","v":1.5174961103297162E-3},{"$f":"'Bill Impact GS50-4999 60kW'!$AI$66","v":1.5091502450514189E-3},{"$f":"'Bill Impact GS50-4999 60kW'!$AP$66","v":1.0920679091083413E-3}]
[]
[null,"Large Use",null,"Distribution Charge (excluding pass-through)",{"$f":"'Bill Impact Large Use 8000kW'!$G$39","v":13556},{"$f":"'Bill Impact Large Use 8000kW'!$K$39","v":14779.199999999999},{"$f":"'Bill Impact Large Use 8000kW'!$R$39","v":14892},{"$f":"'Bill Impact Large Use 8000kW'!$Y$39","v":15364},{"$f":"'Bill Impact Large Use 8000kW'!$AF$39","v":15835.2},{"$f":"'Bill Impact Large Use 8000kW'!$AM$39","v":16180}]
[null,{"$f":"'Bill Impact Large Use 8000kW'!E18","v":5000000},"kWh","Change in Distribution Charge",null,{"$f":"'Bill Impact Large Use 8000kW'!$M$39","v":1223.1999999999989},{"$f":"'Bill Impact Large Use 8000kW'!$T$39","v":112.80000000000109},{"$f":"'Bill Impact Large Use 8000kW'!$AA$39","v":472},{"$f":"'Bill Impact Large Use 8000kW'!$AH$39","v":471.20000000000073},{"$f":"'Bill Impact Large Use 8000kW'!$AO$39","v":344.79999999999927}]
[null,{"$f":"'Bill Impact Large Use 8000kW'!E19","v":8000},"kW","% Distribution Increase",null,{"$f":"'Bill Impact Large Use 8000kW'!$N$39","v":9.0233107111242175E-2},{"$f":"'Bill Impact Large Use 8000kW'!$U$39","v":7.6323481649887073E-3},{"$f":"'Bill Impact Large Use 8000kW'!$AB$39","v":3.1694869728713403E-2},{"$f":"'Bill Impact Large Use 8000kW'!$AI$39","v":3.0669096589429883E-2},{"$f":"'Bill Impact Large Use 8000kW'!$AP$39","v":2.1774275032838186E-2}]
[null,null,null,"% Increase Total Bill",null,{"$f":"'Bill Impact Large Use 8000kW'!$N$66","v":-2.5236005990608703E-3},{"$f":"'Bill Impact Large Use 8000kW'!$U$66","v":1.342005663944618E-2},{"$f":"'Bill Impact Large Use 8000kW'!$AB$66","v":6.9405549847159664E-4},{"$f":"'Bill Impact Large Use 8000kW'!$AI$66","v":6.9239857018535574E-4},{"$f":"'Bill Impact Large Use 8000kW'!$AP$66","v":5.0631120291781933E-4}]
[]
[null,"Unmetered Scattered Load",null,"Distribution Charge (excluding pass-through)",{"$f":"'Bill Impact USL 750kWh'!$G$39","v":22.05},{"$f":"'Bill Impact USL 750kWh'!$K$39","v":14.555000000000001},{"$f":"'Bill Impact USL 750kWh'!$R$39","v":14.8},{"$f":"'Bill Impact USL 750kWh'!$Y$39","v":15.174999999999999},{"$f":"'Bill Impact USL 750kWh'!$AF$39","v":15.684999999999999},{"$f":"'Bill Impact USL 750kWh'!$AM$39","v":16.059999999999999}]
[null,{"$f":"'Bill Impact USL 750kWh'!E18","v":750},"kWh","Change in Distribution Charge",null,{"$f":"'Bill Impact USL 750kWh'!$M$39","v":-7.4949999999999992},{"$f":"'Bill Impact USL 750kWh'!$T$39","v":0.24499999999999922},{"$f":"'Bill Impact USL 750kWh'!$AA$39","v":0.37499999999999822},{"$f":"'Bill Impact USL 750kWh'!$AH$39","v":0.50999999999999979},{"$f":"'Bill Impact USL 750kWh'!$AO$39","v":0.375}]
[null,null,null,"% Distribution Increase",null,{"$f":"'Bill Impact USL 750kWh'!$N$39","v":-0.33990929705215417},{"$f":"'Bill Impact USL 750kWh'!$U$39","v":1.6832703538302934E-2},{"$f":"'Bill Impact USL 750kWh'!$AB$39","v":2.5337837837837718E-2},{"$f":"'Bill Impact USL 750kWh'!$AI$39","v":3.3607907742998343E-2},{"$f":"'Bill Impact USL 750kWh'!$AP$39","v":2.3908192540643931E-2}]
[null,null,null,"% Increase Total Bill",null,{"$f":"'Bill Impact USL 750kWh'!$N$66","v":2.0235643190562771E-2},{"$f":"'Bill Impact USL 750kWh'!$U$66","v":3.9324653538383318E-2},{"$f":"'Bill Impact USL 750kWh'!$AB$66","v":3.1391098146707317E-3},{"$f":"'Bill Impact USL 750kWh'!$AI$66","v":4.2558298307612792E-3},{"$f":"'Bill Impact USL 750kWh'!$AP$66","v":3.1160253665569546E-3}]
[]
[null,"Street Lighting",null,"Distribution Charge (excluding pass-through)",{"$f":"'Bill Impact St Light 375kW'!$G$39","v":6842.7},{"$f":"'Bill Impact St Light 375kW'!$K$39","v":10859.7125},{"$f":"'Bill Impact St Light 375kW'!$R$39","v":9709.125},{"$f":"'Bill Impact St Light 375kW'!$Y$39","v":11465.637500000001},{"$f":"'Bill Impact St Light 375kW'!$AF$39","v":11844.55},{"$f":"'Bill Impact St Light 375kW'!$AM$39","v":12126.0625}]
[null,{"$f":"'Bill Impact St Light 375kW'!E18","v":150000},"kWh","Change in Distribution Charge",null,{"$f":"'Bill Impact St Light 375kW'!$M$39","v":4017.0124999999998},{"$f":"'Bill Impact St Light 375kW'!$T$39","v":-1150.5874999999996},{"$f":"'Bill Impact St Light 375kW'!$AA$39","v":1756.5125000000007},{"$f":"'Bill Impact St Light 375kW'!$AH$39","v":378.91249999999854},{"$f":"'Bill Impact St Light 375kW'!$AO$39","v":281.51250000000073}]
[null,{"$f":"'Bill Impact St Light 375kW'!E19","v":375},"kW","% Distribution Increase",null,{"$f":"'Bill Impact St Light 375kW'!$N$39","v":0.58705079866134713},{"$f":"'Bill Impact St Light 375kW'!$U$39","v":-0.10595008845768243},{"$f":"'Bill Impact St Light 375kW'!$AB$39","v":0.18091357357125393},{"$f":"'Bill Impact St Light 375kW'!$AI$39","v":3.3047660891075484E-2},{"$f":"'Bill Impact St Light 375kW'!$AP$39","v":2.3767260047870182E-2}]
[null,{"$f":"'Bill Impact St Light 375kW'!E17","v":5000},"Lights","% Increase Total Bill",null,{"$f":"'Bill Impact St Light 375kW'!$N$66","v":0.28343601074407515},{"$f":"'Bill Impact St Light 375kW'!$U$66","v":-0.19328179182782759},{"$f":"'Bill Impact St Light 375kW'!$AB$66","v":5.8721011579350148E-2},{"$f":"'Bill Impact St Light 375kW'!$AI$66","v":1.1964641328432163E-2},{"$f":"'Bill Impact St Light 375kW'!$AP$66","v":8.7840155688653585E-3}]
[]
[null,"Standby Approved on a Final Basis"]
[]
[null,"* Numbers subject to change, based on items to be adjusted at a later date as set out in this Settlement Proposal."]

{"sheet":"Bill Impact Resi 204kWh","index":2,"n_rows":90,"n_cols":42,"rows_kept":90,"cut":false,"hidden":false,"merged":[[77,41,78,41],[76,4,76,6],[76,8,76,10],[76,12,76,13],[76,15,76,17],[76,19,76,20],[76,22,76,24],[76,26,76,27],[76,29,76,31],[76,33,76,34],[76,36,76,38],[76,40,76,41],[77,26,78,26],[77,27,78,27],[77,33,78,33],[77,34,78,34],[77,40,78,40],[77,2,78,2],[77,12,78,12],[77,13,78,13],[77,19,78,19],[77,20,78,20],[19,36,19,38],[19,40,19,41],[20,40,21,40],[20,41,21,41],[19,26,19,27],[20,26,21,26],[20,27,21,27],[19,29,19,31],[19,33,19,34],[20,33,21,33],[20,34,21,34],[19,22,19,24],[71,0,71,2],[19,15,19,17],[19,19,19,20],[20,19,21,19],[20,20,21,20],[20,2,21,2],[20,12,21,12],[20,13,21,13],[64,0,64,2],[65,0,65,2],[70,0,70,2],[2,0,2,9],[9,0,9,13],[10,0,10,13],[13,2,13,13],[19,4,19,6],[19,8,19,10],[19,12,19,13]]}
[null,null,null,null,null,null,null,null,null,null,null,null,"File Number:",{"$f":"EBNUMBER","v":"EB-2015-0083"},null,null,null,null,1]
[null,null,null,null,null,null,null,null,null,null,null,null,"Exhibit:",8]
[null,null,null,null,null,null,null,null,null,null,null,null,"Tab:",4]
[null,null,null,null,null,null,null,null,null,null,null,null,"Schedule:",3]
[null,null,null,null,null,null,null,null,null,null,null,null,"Page:"]
[]
[null,null,null,null,null,null,null,null,null,null,null,null,null,"Settlement"]
[null,null,null,null,null,null,null,null,null,null,null,null,"Date:","2015-10-20"]
[]
["Appendix 2-W"]
["Bill Impacts"]
[]
[]
["Customer Class:",null,"Residential",null,null,null,null,null,null,null,null,null,null,null,null,{"$f":"C14","v":"Residential"},null,null,null,null,null,null,null,null,null,null,null,null,null,null,null,null,null,null,null,null,{"$f":"P14","v":"Residential"}]
[]
["TOU / non-TOU:",null,"TOU"]
[]
[null,null,"Consumption",null,204," kWh"]
[]
[null,null,null,null,"2015 Current Board-Approved",null,null,null,"2016 Test Year 1\nProposed",null,null,null,"Impact\n2016 TEST vs. \n2015 Bridge",null,null,"2017 Test Year 2\nProposed",null,null,null,"Impact\n2017 TEST 2 vs. \n2016 Test 1",null,null,"2018 Test Year 3\nProposed",null,null,null,"Impact\n2018 TEST 3 vs. \n2017 Test 2",null,null,"2019 Test Year 4\nProposed",null,null,null,"Impact\n2019 TEST 4 vs. \n2018 Test 3",null,null,"2020 Test Year 5 \nProposed",null,null,null,"Impact\n2020 TEST 5 vs. \n2019 Test 4"]
[null,null,"Charge Unit",null,"Rate","Volume","Charge",null,"Rate","Volume","Charge",null,"$ Change","% Change",null,"Rate","Volume","Charge",null,"$ Change","% Change",null,"Rate","Volume","Charge",null,"$ Change","% Change",null,"Rate","Volume","Charge",null,"$ Change","% Change",null,"Rate","Volume","Charge",null,"$ Change","% Change"]
[null,null,null,null,"($)",null,"($)",null,"($)",null,"($)",null,null,null,null,"($)",null,"($)",null,null,null,null,"($)",null,"($)",null,null,null,null,"($)",null,"($)",null,null,null,null,"($)",null,"($)"]
["Monthly Service Charge",null,"Monthly",null,12.56,1,{"$f":"F23*E23","v":12.56},null,{"$f":"'Rates Summary'!$E$28","v":13.98},1,{"$f":"J23*I23","v":13.98},null,{"$f":"K23-G23","v":1.42},{"$f":"IF((G23)=0,\"\",(M23/G23))","v":0.11305732484076432},null,{"$f":"'Rates Summary'!$F$28","v":18.54},1,{"$f":"Q23*P23","v":18.54},null,{"$f":"R23-K23","v":4.5599999999999987},{"$f":"IF((K23)=0,\"\",(T23/K23))","v":0.32618025751072949},null,{"$f":"'Rates Summary'!$G$28","v":21.88},1,{"$f":"X23*W23","v":21.88},null,{"$f":"Y23-R23","v":3.34},{"$f":"IF((R23)=0,\"\",(AA23/R23))","v":0.18015102481121897},null,{"$f":"'Rates Summary'!$H$28","v":25.35},1,{"$f":"AE23*AD23","v":25.35},null,{"$f":"AF23-Y23","v":3.4700000000000024},{"$f":"IF((Y23)=0,\"\",(AH23/Y23))","v":0.15859232175502755},null,{"$f":"'Rates Summary'!$I$28","v":25.96},1,{"$f":"AL23*AK23","v":25.96},null,{"$f":"AM23-AF23","v":0.60999999999999943},{"$f":"IF((AF23)=0,\"\",(AO23/AF23))","v":2.4063116370808654E-2}]
["Smart Meter (SMIRR) Rate Rider",null,"Monthly",null,2.63,1,{"$f":"F24*E24","v":2.63},null,0,1,{"$f":"J24*I24","v":0},null,{"$f":"K24-G24","v":-2.63},{"$f":"IF((G24)=0,\"\",(M24/G24))","v":-1},null,0,1,{"$f":"Q24*P24","v":0},null,0,{"$f":"IF((K24)=0,\"\",(T24/K24))","v":""},null,0,1,{"$f":"X24*W24","v":0},null,0,{"$f":"IF((R24)=0,\"\",(AA24/R24))","v":""},null,0,1,{"$f":"AE24*AD24","v":0},null,0,{"$f":"IF((Y24)=0,\"\",(AH24/Y24))","v":""},null,0,1,{"$f":"AL24*AK24","v":0},null,0,{"$f":"IF((AF24)=0,\"\",(AO24/AF24))","v":""}]
["Rate Rider Smart Meters Capital (2016)",null,"Monthly",null,0,1,0,null,{"$f":"'Rates Summary'!C10","v":0.25},1,{"$f":"J25*I25","v":0.25},null,{"$f":"K25-G25","v":0.25},null,null,0,1,{"$f":"Q25*P25","v":0},null,-0.25,-1,null,0,1,{"$f":"X25*W25","v":0},null,0,"",null,0,1,{"$f":"AE25*AD25","v":0},null,0,"",null,0,1,{"$f":"AL25*AK25","v":0},null,0,""]
["Rate Rider Recovery of Stranded Meters",null,"Monthly",null,0,1,0,null,{"$f":"'Rates Summary'!$C11","v":3.69},1,3.69,null,3.69,null,null,0,1,0,null,-3.69,-1,null,0,1,0,null,0,"",null,0,1,0,null,0,"",null,0,1,0,null,0,""]
[null,null,null,null,null,1,0,null,null,1,0,null,0,{"$f":"IF((G27)=0,\"\",(M27/G27))","v":""},null,null,1,0,null,0,"",null,null,1,0,null,0,"",null,null,1,0,null,0,"",null,null,1,0,null,0,""]
[null,null,null,null,null,1,0,null,null,1,0,null,0,"",null,null,1,0,null,0,"",null,null,1,0,null,0,"",null,null,1,0,null,0,"",null,null,1,0,null,0,""]
["Distribution Volumetric Rate",null,"per kWh",null,1.54E-2,{"$f":"$E$18","v":204},{"$f":"F29*E29","v":3.1415999999999999},null,{"$f":"'Rates Summary'!$E$40","v":1.3899999999999999E-2},{"$f":"$E$18","v":204},2.8355999999999999,null,-0.30600000000000005,-9.7402597402597421E-2,null,{"$f":"'Rates Summary'!$F$40","v":8.2000000000000007E-3},{"$f":"$E$18","v":204},1.6728000000000001,null,-1.1627999999999998,-0.41007194244604311,null,{"$f":"'Rates Summary'!$G$40","v":4.1999999999999997E-3},{"$f":"$E$18","v":204},0.8567999999999999,null,-0.81600000000000017,-0.48780487804878059,null,{"$f":"'Rates Summary'!$H$40","v":0},{"$f":"$E$18","v":204},0,null,-0.8567999999999999,-1,null,{"$f":"'Rates Summary'!$I$40","v":0},{"$f":"$E$18","v":204},0,null,0,""]
["Rate Rider Tax Change (2015)",null,"per kWh",null,-1E-4,{"$f":"$E$18","v":204},{"$f":"F30*E30","v":-2.0400000000000001E-2},null,0,{"$f":"$E$18","v":204},0,null,2.0400000000000001E-2,{"$f":"IF((G30)=0,\"\",(M30/G30))","v":-1},null,0,{"$f":"$E$18","v":204},0,null,0,"",null,0,{"$f":"$E$18","v":204},0,null,0,"",null,0,{"$f":"$E$18","v":204},0,null,0,"",null,0,{"$f":"$E$18","v":204},0,null,0,""]
["LRAM VA (2016)",null,"per kWh",null,0,{"$f":"$E$18","v":204},0,null,{"$f":"'Rates Summary'!C7","v":2.9999999999999997E-4},204,6.1199999999999997E-2,null,6.1199999999999997E-2,null,null,0,204,0,null,-6.1199999999999997E-2,{"$f":"IF((K31)=0,\"\",(T31/K31))","v":-1},null,0,204,0,null,0,"",null,0,204,0,null,0,"",null,0,204,0,null,0,""]
["Rate Rider Incremental Capital 2012 True-Up (2016)",null,"per kWh",null,0,{"$f":"$E$18","v":204},0,null,{"$f":"'Rates Summary'!C9","v":4.0000000000000002E-4},204,8.1600000000000006E-2,null,8.1600000000000006E-2,null,null,0,204,0,null,-8.1600000000000006E-2,{"$f":"IF((K32)=0,\"\",(T32/K32))","v":-1},null,0,204,0,null,0,"",null,0,204,0,null,0,"",null,0,204,0,null,0,""]
[null,null,"per kWh",null,0,{"$f":"$E$19","v":0},0,null,null,{"$f":"$E$19","v":0},0,null,0,{"$f":"IF((G33)=0,\"\",(M33/G33))","v":""},null,null,{"$f":"$E$19","v":0},0,null,0,"",null,null,{"$f":"$E$19","v":0},0,null,0,"",null,null,{"$f":"$E$19","v":0},0,null,0,"",null,null,{"$f":"$E$19","v":0},0,null,0,""]
[null,null,null,null,0,204,0,null,null,204,0,null,0,"",null,null,204,0,null,0,"",null,null,204,0,null,0,"",null,null,204,0,null,0,"",null,null,204,0,null,0,""]
[null,null,null,null,null,204,0,null,null,204,0,null,0,"",null,null,204,0,null,0,"",null,null,204,0,null,0,"",null,null,204,0,null,0,"",null,null,204,0,null,0,""]
[null,null,null,null,null,204,0,null,null,204,0,null,0,"",null,null,204,0,null,0,"",null,null,204,0,null,0,"",null,null,204,0,null,0,"",null,null,204,0,null,0,""]
[null,null,null,null,null,204,0,null,null,204,0,null,0,"",null,null,204,0,null,0,"",null,null,204,0,null,0,"",null,null,204,0,null,0,"",null,null,204,0,null,0,""]
[null,null,null,null,null,204,0,null,null,204,0,null,0,"",null,null,204,0,null,0,"",null,null,204,0,null,0,"",null,null,204,0,null,0,"",null,null,204,0,null,0,""]
["Sub-Total A (excluding pass through)",null,null,null,null,null,{"$f":"SUM(G23:G38)","v":18.311200000000003},null,null,null,{"$f":"SUM(K23:K38)","v":20.898400000000002},null,{"$f":"K39-G39","v":2.5871999999999993},0.1412905762593385,null,null,null,{"$f":"SUM(R23:R38)","v":20.212799999999998},null,-0.68560000000000443,-3.2806339241281839E-2,null,null,null,{"$f":"SUM(Y23:Y38)","v":22.736799999999999},null,2.5240000000000009,0.12487136863769499,null,null,null,{"$f":"SUM(AF23:AF38)","v":25.35},null,2.6132000000000026,0.11493262024559317,null,null,null,{"$f":"SUM(AM23:AM38)","v":25.96},null,0.60999999999999943,2.4063116370808654E-2]
["Deferral/Variance Account Disposition Rate Rider (2016)",null,"per kWh",null,0,{"$f":"$E$18","v":204},{"$f":"F40*E40","v":0},null,{"$f":"'Rates Summary'!C5","v":6.9999999999999999E-4},{"$f":"$E$18","v":204},{"$f":"J40*I40","v":0.14280000000000001},null,{"$f":"K40-G40","v":0.14280000000000001},{"$f":"IF((G40)=0,\"\",(M40/G40))","v":""},null,0,{"$f":"$E$18","v":204},{"$f":"Q40*P40","v":0},null,{"$f":"R40-K40","v":-0.14280000000000001},-1,null,0,{"$f":"$E$18","v":204},{"$f":"X40*W40","v":0},null,0,"",null,0,{"$f":"$E$18","v":204},{"$f":"AE40*AD40","v":0},null,0,"",null,0,{"$f":"$E$18","v":204},{"$f":"AL40*AK40","v":0},null,0,""]
[null,null,null,null,null,{"$f":"$E$18","v":204},{"$f":"F41*E41","v":0},null,{"$f":"E41","v":0},{"$f":"$E$18","v":204},{"$f":"J41*I41","v":0},null,{"$f":"K41-G41","v":0},{"$f":"IF((G41)=0,\"\",(M41/G41))","v":""},null,null,{"$f":"$E$18","v":204},{"$f":"Q41*P41","v":0},null,{"$f":"R41-K41","v":0},{"$f":"IF((K41)=0,\"\",(T41/K41))","v":""},null,null,{"$f":"$E$18","v":204},{"$f":"X41*W41","v":0},null,{"$f":"Y41-R41","v":0},{"$f":"IF((R41)=0,\"\",(AA41/R41))","v":""},null,null,{"$f":"$E$18","v":204},{"$f":"AE41*AD41","v":0},null,{"$f":"AF41-Y41","v":0},{"$f":"IF((Y41)=0,\"\",(AH41/Y41))","v":""},null,null,{"$f":"$E$18","v":204},{"$f":"AL41*AK41","v":0},null,{"$f":"AM41-AF41","v":0},{"$f":"IF((AF41)=0,\"\",(AO41/AF41))","v":""}]
["Rate Rider CGAAP Account 1576 (2016)",null,"per kWh",null,0,204,0,null,{"$f":"'Rates Summary'!$C$8","v":-1.0800000000000001E-2},204,-2.2032000000000003,null,-2.2032000000000003,"",null,0,204,0,null,2.2032000000000003,-1,null,{"$f":"P42","v":0},204,0,null,0,"",null,{"$f":"W42","v":0},204,0,null,0,"",null,{"$f":"AD42","v":0},204,0,null,0,""]
["Disposition of Global Adjustment (2015)  \nApplicable to Non-RPP Customers",null,"per kWh",null,1.5599999999999999E-2,0,{"$f":"F43*E43","v":0},null,0,204,{"$f":"J43*I43","v":0},null,{"$f":"K43-G43","v":0},{"$f":"IF((G43)=0,\"\",(M43/G43))","v":""},null,0,204,{"$f":"Q43*P43","v":0},null,0,"",null,0,204,{"$f":"X43*W43","v":0},null,0,"",null,0,204,{"$f":"AE43*AD43","v":0},null,0,"",null,0,204,{"$f":"AL43*AK43","v":0},null,0,""]
["Disposition of Global Adjustment (2016) \nApplicable to Non-RPP Customers",null,"per kWh",null,0,204,0,null,{"$f":"'Rates Summary'!C6","v":2.0500000000000001E-2},0,0,null,0,"",null,0,204,0,null,0,"",null,0,204,0,null,0,"",null,0,204,0,null,0,"",null,0,204,0,null,0,""]
["Low Voltage Service Charge",null,"per kWh",null,6.9999999999999999E-4,204,{"$f":"F45*E45","v":0.14280000000000001},null,{"$f":"'Rates Summary'!C15","v":1.1999999999999999E-3},204,{"$f":"J45*I45","v":0.24479999999999999},null,{"$f":"K45-G45","v":0.10199999999999998},{"$f":"IF((G45)=0,\"\",(M45/G45))","v":0.71428571428571408},null,{"$f":"I45","v":1.1999999999999999E-3},204,{"$f":"Q45*P45","v":0.24479999999999999},null,{"$f":"R45-K45","v":0},0,null,{"$f":"P45","v":1.1999999999999999E-3},204,{"$f":"X45*W45","v":0.24479999999999999},null,{"$f":"Y45-R45","v":0},0,null,{"$f":"W45","v":1.1999999999999999E-3},204,{"$f":"AE45*AD45","v":0.24479999999999999},null,{"$f":"AF45-Y45","v":0},0,null,{"$f":"AD45","v":1.1999999999999999E-3},204,{"$f":"AL45*AK45","v":0.24479999999999999},null,{"$f":"AM45-AF45","v":0},0]
["Line Losses on Cost of Power",null,"per kWh",null,{"$f":"IF(ISBLANK(C16)=TRUE, 0, IF(C16=\"TOU\", 0.64*$E$56+0.18*$E$57+0.18*$E$58, IF(AND(C16=\"non-TOU\", F60>0), E60,E59)))","v":0.10766000000000001},{"$f":"$E$18*(1+$E$75)-$E$18","v":7.0175999999999874},0.7555148159999987,null,{"$f":"E46","v":0.10766000000000001},{"$f":"$E$18*(1+$I$75)-$E$18","v":8.0171999999999741},0.86313175199999725,null,0.10761693599999855,0.14244186046511462,null,{"$f":"I46","v":0.10766000000000001},{"$f":"$E$18*(1+$I$75)-$E$18","v":8.0171999999999741},{"$f":"Q46*P46","v":0.86313175199999725},null,{"$f":"R46-K46","v":0},0,null,{"$f":"P46","v":0.10766000000000001},{"$f":"$E$18*(1+$I$75)-$E$18","v":8.0171999999999741},{"$f":"X46*W46","v":0.86313175199999725},null,{"$f":"Y46-R46","v":0},0,null,{"$f":"W46","v":0.10766000000000001},{"$f":"$E$18*(1+$I$75)-$E$18","v":8.0171999999999741},{"$f":"AE46*AD46","v":0.86313175199999725},null,{"$f":"AF46-Y46","v":0},0,null,{"$f":"AD46","v":0.10766000000000001},{"$f":"$E$18*(1+$I$75)-$E$18","v":8.0171999999999741},{"$f":"AL46*AK46","v":0.86313175199999725},null,{"$f":"AM46-AF46","v":0},0]
["Smart Meter Entity Charge",null,"Monthly",null,0.79,1,{"$f":"F47*E47","v":0.79},null,0.79,1,{"$f":"J47*I47","v":0.79},null,{"$f":"K47-G47","v":0},null,null,0.79,1,{"$f":"Q47*P47","v":0.79},null,{"$f":"R47-K47","v":0},0,null,0.79,1,{"$f":"X47*W47","v":0.79},null,{"$f":"Y47-R47","v":0},0,null,0,1,{"$f":"AE47*AD47","v":0},null,{"$f":"AF47-Y47","v":-0.79},-1,null,0,1,{"$f":"AL47*AK47","v":0},null,{"$f":"AM47-AF47","v":0},""]
["Sub-Total B - Distribution (includes Sub-Total A)",null,null,null,null,null,{"$f":"SUM(G40:G47)+G39","v":19.999514816000001},null,null,null,{"$f":"SUM(K40:K47)+K39","v":20.735931751999999},null,{"$f":"K48-G48","v":0.73641693599999769},{"$f":"IF((G48)=0,\"\",(M48/G48))","v":3.6821740065956489E-2},null,null,null,{"$f":"SUM(R40:R47)+R39","v":22.110731751999996},null,{"$f":"R48-K48","v":1.3747999999999969},6.6300372534134913E-2,null,null,null,{"$f":"SUM(Y40:Y47)+Y39","v":24.634731751999997},null,{"$f":"Y48-R48","v":2.5240000000000009},0.11415271228061893,null,null,null,{"$f":"SUM(AF40:AF47)+AF39","v":26.457931752},null,{"$f":"AF48-Y48","v":1.8232000000000035},7.4009330337115806E-2,null,null,null,{"$f":"SUM(AM40:AM47)+AM39","v":27.067931752},null,{"$f":"AM48-AF48","v":0.60999999999999943},2.3055468043298149E-2]
["RTSR - Network",null,"per kWh",null,6.7000000000000002E-3,{"$f":"$E$18*(1+$E$75)","v":211.01759999999999},{"$f":"F49*E49","v":1.4138179200000001},null,{"$f":"'Rates Summary'!C17","v":7.1000000000000004E-3},{"$f":"$E$18*(1+$I$75)","v":212.01719999999997},{"$f":"J49*I49","v":1.50532212},null,9.1504199999999924E-2,6.4721346861977752E-2,null,{"$f":"I49","v":7.1000000000000004E-3},{"$f":"$E$18*(1+P75)","v":212.01719999999997},{"$f":"Q49*P49","v":1.50532212},null,0,0,null,{"$f":"P49","v":7.1000000000000004E-3},{"$f":"$E$18*(1+W75)","v":212.01719999999997},{"$f":"X49*W49","v":1.50532212},null,0,0,null,{"$f":"W49","v":7.1000000000000004E-3},{"$f":"$E$18*(1+AD75)","v":212.01719999999997},{"$f":"AE49*AD49","v":1.50532212},null,0,0,null,{"$f":"AD49","v":7.1000000000000004E-3},{"$f":"$E$18*(1+AK75)","v":212.01719999999997},{"$f":"AL49*AK49","v":1.50532212},null,0,0]
["RTSR - Line and Transformation Connection",null,"per kWh",null,5.1000000000000004E-3,{"$f":"F49","v":211.01759999999999},{"$f":"F50*E50","v":1.0761897600000001},null,{"$f":"'Rates Summary'!C18","v":5.5999999999999999E-3},{"$f":"J49","v":212.01719999999997},{"$f":"J50*I50","v":1.1872963199999997},null,0.11110655999999963,0.10324067755485763,null,{"$f":"I50","v":5.5999999999999999E-3},{"$f":"Q49","v":212.01719999999997},{"$f":"Q50*P50","v":1.1872963199999997},null,0,0,null,{"$f":"P50","v":5.5999999999999999E-3},{"$f":"X49","v":212.01719999999997},{"$f":"X50*W50","v":1.1872963199999997},null,0,0,null,{"$f":"W50","v":5.5999999999999999E-3},{"$f":"AE49","v":212.01719999999997},{"$f":"AE50*AD50","v":1.1872963199999997},null,0,0,null,{"$f":"AD50","v":5.5999999999999999E-3},{"$f":"AL49","v":212.01719999999997},{"$f":"AL50*AK50","v":1.1872963199999997},null,0,0]
["Sub-Total C - Delivery (including Sub-Total B)",null,null,null,null,null,{"$f":"SUM(G48:G50)","v":22.489522495999999},null,null,null,{"$f":"SUM(K48:K50)","v":23.428550191999996},null,0.93902769599999658,4.1754007723686114E-2,null,null,null,{"$f":"SUM(R48:R50)","v":24.803350191999996},null,1.3748000000000005,5.868054099521041E-2,null,null,null,{"$f":"SUM(Y48:Y50)","v":27.327350191999997},null,2.5240000000000009,0.10176044689374603,null,null,null,{"$f":"SUM(AF48:AF50)","v":29.150550191999997},null,1.8231999999999999,6.6717043079198235E-2,null,null,null,{"$f":"SUM(AM48:AM50)","v":29.760550191999997},null,0.60999999999999943,2.0925848602590228E-2]
["Wholesale Market Service Charge (WMSC)",null,"per kWh",null,4.4000000000000003E-3,{"$f":"F50","v":211.01759999999999},{"$f":"F52*E52","v":0.92847743999999999},null,{"$f":"'Rates Summary'!C19","v":4.4000000000000003E-3},{"$f":"J50","v":212.01719999999997},{"$f":"J52*I52","v":0.93287567999999998},null,4.3982399999999977E-3,4.7370456303170898E-3,null,{"$f":"I52","v":4.4000000000000003E-3},{"$f":"Q50","v":212.01719999999997},{"$f":"Q52*P52","v":0.93287567999999998},null,0,0,null,{"$f":"P52","v":4.4000000000000003E-3},{"$f":"X50","v":212.01719999999997},{"$f":"X52*W52","v":0.93287567999999998},null,0,0,null,{"$f":"W52","v":4.4000000000000003E-3},{"$f":"AE50","v":212.01719999999997},{"$f":"AE52*AD52","v":0.93287567999999998},null,0,0,null,{"$f":"AD52","v":4.4000000000000003E-3},{"$f":"AL50","v":212.01719999999997},{"$f":"AL52*AK52","v":0.93287567999999998},null,0,0]
["Rural and Remote Rate Protection (RRRP)",null,"per kWh",null,1.2999999999999999E-3,{"$f":"F50","v":211.01759999999999},0.27432287999999999,null,{"$f":"'Rates Summary'!C20","v":1.2999999999999999E-3},{"$f":"J50","v":212.01719999999997},0.27562235999999996,null,1.299479999999964E-3,4.7370456303169606E-3,null,{"$f":"I53","v":1.2999999999999999E-3},{"$f":"Q50","v":212.01719999999997},0.27562235999999996,null,0,0,null,{"$f":"P53","v":1.2999999999999999E-3},{"$f":"X50","v":212.01719999999997},0.27562235999999996,null,0,0,null,{"$f":"W53","v":1.2999999999999999E-3},{"$f":"AE50","v":212.01719999999997},0.27562235999999996,null,0,0,null,{"$f":"AD53","v":1.2999999999999999E-3},{"$f":"AL50","v":212.01719999999997},0.27562235999999996,null,0,0]
["Standard Supply Service Charge",null,"Monthly",null,0.25,1,0.25,null,{"$f":"'Rates Summary'!C21","v":0.25},1,0.25,null,0,0,null,{"$f":"I54","v":0.25},1,0.25,null,0,0,null,{"$f":"P54","v":0.25},1,0.25,null,0,0,null,{"$f":"W54","v":0.25},1,0.25,null,0,0,null,{"$f":"AD54","v":0.25},1,0.25,null,0,0]
["Debt Retirement Charge (DRC)",null,"per kWh",null,7.0000000000000001E-3,{"$f":"E18","v":204},1.4279999999999999,null,0,{"$f":"E18","v":204},0,null,-1.4279999999999999,-1,null,0,{"$f":"J55","v":204},0,null,0,"",null,0,{"$f":"Q55","v":204},0,null,0,"",null,0,{"$f":"X55","v":204},0,null,0,"",null,0,{"$f":"AE55","v":204},0,null,0,""]
["TOU - Off Peak",null,"per kWh",null,8.3000000000000004E-2,{"$f":"0.64*$E$18","v":130.56},10.83648,null,{"$f":"E56","v":8.3000000000000004E-2},{"$f":"F56","v":130.56},10.83648,null,0,0,null,{"$f":"I56","v":8.3000000000000004E-2},{"$f":"J56","v":130.56},10.83648,null,0,0,null,{"$f":"P56","v":8.3000000000000004E-2},{"$f":"Q56","v":130.56},10.83648,null,0,0,null,{"$f":"W56","v":8.3000000000000004E-2},{"$f":"X56","v":130.56},10.83648,null,0,0,null,{"$f":"AD56","v":8.3000000000000004E-2},{"$f":"AE56","v":130.56},10.83648,null,0,0]
["TOU - Mid Peak",null,"per kWh",null,0.128,{"$f":"0.18*$E$18","v":36.72},4.7001600000000003,null,{"$f":"E57","v":0.128},{"$f":"F57","v":36.72},4.7001600000000003,null,0,0,null,{"$f":"I57","v":0.128},{"$f":"J57","v":36.72},4.7001600000000003,null,0,0,null,{"$f":"P57","v":0.128},{"$f":"Q57","v":36.72},4.7001600000000003,null,0,0,null,{"$f":"W57","v":0.128},{"$f":"X57","v":36.72},4.7001600000000003,null,0,0,null,{"$f":"AD57","v":0.128},{"$f":"AE57","v":36.72},4.7001600000000003,null,0,0]
["TOU - On Peak",null,"per kWh",null,0.17499999999999999,{"$f":"0.18*$E$18","v":36.72},6.4259999999999993,null,0.17499999999999999,{"$f":"F58","v":36.72},6.4259999999999993,null,0,0,null,0.17499999999999999,36.72,6.4259999999999993,null,0,0,null,0.17499999999999999,36.72,6.4259999999999993,null,0,0,null,0.17499999999999999,36.72,6.4259999999999993,null,0,0,null,0.17499999999999999,36.72,6.4259999999999993,null,0,0]
["Energy - RPP - Tier 1",null,"per kWh",null,9.9000000000000005E-2,{"$f":"IF(AND($S$1=1, E18>=600), 600, IF(AND($S$1=1, AND(E18<600, E18>=0)), E18, IF(AND($S$1=2, E18>=1000), 1000, IF(AND($S$1=2, AND(E18<1000, E18>=0)), E18))))","v":204},{"$f":"F59*E59","v":20.196000000000002},null,9.9000000000000005E-2,{"$f":"F59","v":204},{"$f":"J59*I59","v":20.196000000000002},null,0,0,null,9.9000000000000005E-2,204,{"$f":"Q59*P59","v":20.196000000000002},null,0,0,null,9.9000000000000005E-2,204,{"$f":"X59*W59","v":20.196000000000002},null,0,0,null,9.9000000000000005E-2,204,{"$f":"AE59*AD59","v":20.196000000000002},null,0,0,null,9.9000000000000005E-2,204,{"$f":"AL59*AK59","v":20.196000000000002},null,0,0]
["Energy - RPP - Tier 2",null,"per kWh",null,0.11600000000000001,{"$f":"IF(AND($S$1=1, E18>=600), E18-600, IF(AND($S$1=1, AND(E18<600, E18>=0)), 0, IF(AND($S$1=2, E18>=1000), E18-1000, IF(AND($S$1=2, AND(E18<1000, E18>=0)), 0))))","v":0},{"$f":"F60*E60","v":0},null,0.11600000000000001,{"$f":"F60","v":0},{"$f":"J60*I60","v":0},null,0,"",null,0.11600000000000001,0,{"$f":"Q60*P60","v":0},null,0,"",null,0.11600000000000001,0,{"$f":"X60*W60","v":0},null,0,"",null,0.11600000000000001,0,{"$f":"AE60*AD60","v":0},null,0,"",null,0.11600000000000001,0,{"$f":"AL60*AK60","v":0},null,0,""]
[null,null,null,null,null,null,null,null,null,null,null,null,null,null,null,null,null,null,null,null,"",null,null,null,null,null,null,"",null,null,null,null,null,null,"",null,null,null,null,null,null,""]
["Total Bill on TOU (before Taxes)",null,null,null,null,null,{"$f":"SUM(G52:G58,G51)","v":47.332962815999998},null,null,null,{"$f":"SUM(K52:K58,K51)","v":46.849688231999991},null,{"$f":"K62-G62","v":-0.48327458400000722},{"$f":"IF((G62)=0,\"\",(M62/G62))","v":-1.0210106345522186E-2},null,null,null,{"$f":"SUM(R52:R58,R51)","v":48.224488231999999},null,{"$f":"R62-K62","v":1.3748000000000076},2.9344912461145699E-2,null,null,null,{"$f":"SUM(Y52:Y58,Y51)","v":50.748488232},null,{"$f":"Y62-R62","v":2.5240000000000009},5.2338554384599299E-2,null,null,null,{"$f":"SUM(AF52:AF58,AF51)","v":52.571688232},null,{"$f":"AF62-Y62","v":1.8231999999999999},3.5926193341270049E-2,null,null,null,{"$f":"SUM(AM52:AM58,AM51)","v":53.181688231999999},null,{"$f":"AM62-AF62","v":0.60999999999999943},1.1603203559072637E-2]
["HST",null,null,null,0.13,null,{"$f":"G62*E63","v":6.1532851660799999},null,0.13,null,{"$f":"K62*I63","v":6.090459470159999},null,-6.2825695920000868E-2,-1.0210106345522173E-2,null,0.13,null,{"$f":"R62*P63","v":6.2691834701599998},null,{"$f":"R63-K63","v":0.17872400000000077},2.9344912461145664E-2,null,0.13,null,{"$f":"Y62*W63","v":6.59730347016},null,{"$f":"Y63-R63","v":0.32812000000000019},5.2338554384599313E-2,null,0.13,null,{"$f":"AF62*AD63","v":6.8343194701600005},null,{"$f":"AF63-Y63","v":0.23701600000000056},3.5926193341270139E-2,null,0.13,null,{"$f":"AM62*AK63","v":6.9136194701600004},null,{"$f":"AM63-AF63","v":7.9299999999999926E-2},1.1603203559072635E-2]
["Total Bill (including HST)",null,null,null,null,null,{"$f":"G62+G63","v":53.486247982080002},null,null,null,{"$f":"K62+K63","v":52.94014770215999},null,-0.54610027992001164,-1.021010634552225E-2,null,null,null,{"$f":"R62+R63","v":54.49367170216},null,1.5535240000000101,2.934491246114573E-2,null,null,null,{"$f":"Y62+Y63","v":57.34579170216},null,2.8521199999999993,5.2338554384599265E-2,null,null,null,{"$f":"AF62+AF63","v":59.406007702159997},null,2.0602159999999969,3.592619334127E-2,null,null,null,{"$f":"AM62+AM63","v":60.09530770216},null,0.68930000000000291,1.1603203559072697E-2]
["Ontario Clean Energy Benefit 1",null,null,null,null,null,{"$f":"ROUND(-G64*10%,2)","v":-5.35},null,null,null,0,null,5.35,-1,null,null,null,0,null,0,"",null,null,null,0,null,0,"",null,null,null,0,null,0,"",null,null,null,0,null,0,""]
["Total Bill on TOU (including OCEB)",null,null,null,null,null,{"$f":"G64+G65","v":48.13624798208},null,null,null,{"$f":"K64+K65","v":52.94014770215999},null,4.8038997200799898,9.9797967674347399E-2,null,null,null,{"$f":"R64+R65","v":54.49367170216},null,1.5535240000000101,2.934491246114573E-2,null,null,null,{"$f":"Y64+Y65","v":57.34579170216},null,2.8521199999999993,5.2338554384599265E-2,null,null,null,{"$f":"AF64+AF65","v":59.406007702159997},null,2.0602159999999969,3.592619334127E-2,null,null,null,{"$f":"AM64+AM65","v":60.09530770216},null,0.68930000000000291,1.1603203559072697E-2]
[null,null,null,null,null,null,null,null,null,null,null,null,null,null,null,null,null,null,null,null,"",null,null,null,null,null,null,"",null,null,null,null,null,null,"",null,null,null,null,null,null,""]
["Total Bill on RPP (before Taxes)",null,null,null,null,null,{"$f":"SUM(G59:G60,G52:G55,G51)","v":45.566322815999996},null,null,null,{"$f":"SUM(K59:K60,K52:K55,K51)","v":45.083048231999996},null,{"$f":"K68-G68","v":-0.48327458400000012},{"$f":"IF((G68)=0,\"\",(M68/G68))","v":-1.0605959711769957E-2},null,null,null,{"$f":"SUM(R59:R60,R52:R55,R51)","v":46.457848231999996},null,{"$f":"R68-K68","v":1.3748000000000005},3.0494832401864212E-2,null,null,null,{"$f":"SUM(Y59:Y60,Y52:Y55,Y51)","v":48.981848231999997},null,{"$f":"Y68-R68","v":2.5240000000000009},5.4328818403205317E-2,null,null,null,{"$f":"SUM(AF59:AF60,AF52:AF55,AF51)","v":50.805048231999997},null,{"$f":"AF68-Y68","v":1.8231999999999999},3.7221951923179931E-2,null,null,null,{"$f":"SUM(AM59:AM60,AM52:AM55,AM51)","v":51.415048231999997},null,{"$f":"AM68-AF68","v":0.60999999999999943},1.2006680856092283E-2]
["HST",null,null,null,0.13,null,{"$f":"G68*E69","v":5.9236219660799998},null,0.13,null,{"$f":"K68*I69","v":5.8607962701599998},null,-6.282569591999998E-2,{"$f":"IF((G69)=0,\"\",(M69/G69))","v":-1.060595971176995E-2},null,0.13,null,{"$f":"R68*P69","v":6.0395202701599997},null,{"$f":"R69-K69","v":0.17872399999999988},3.0494832401864177E-2,null,0.13,null,{"$f":"Y68*W69","v":6.3676402701599999},null,{"$f":"Y69-R69","v":0.32812000000000019},5.4328818403205324E-2,null,0.13,null,{"$f":"AF68*AD69","v":6.6046562701599996},null,{"$f":"AF69-Y69","v":0.23701599999999967},3.7221951923179883E-2,null,0.13,null,{"$f":"AM68*AK69","v":6.6839562701599995},null,{"$f":"AM69-AF69","v":7.9299999999999926E-2},1.2006680856092283E-2]
["Total Bill (including HST)",null,null,null,null,null,{"$f":"G68+G69","v":51.489944782079995},null,null,null,{"$f":"K68+K69","v":50.943844502159997},null,-0.54610027991999743,-1.0605959711769905E-2,null,null,null,{"$f":"R68+R69","v":52.497368502159993},null,1.5535239999999959,3.0494832401864118E-2,null,null,null,{"$f":"Y68+Y69","v":55.34948850216},null,2.8521200000000064,5.4328818403205421E-2,null,null,null,{"$f":"AF68+AF69","v":57.409704502159997},null,2.0602159999999969,3.7221951923179876E-2,null,null,null,{"$f":"AM68+AM69","v":58.09900450216},null,0.68930000000000291,1.2006680856092345E-2]
["Ontario Clean Energy Benefit 1",null,null,null,null,null,{"$f":"ROUND(-G70*10%,2)","v":-5.15},null,null,null,0,null,5.15,-1,null,null,null,0,null,0,"",null,null,null,0,null,0,"",null,null,null,0,null,0,"",null,null,null,0,null,0,""]
["Total Bill on RPP (including OCEB)",null,null,null,null,null,{"$f":"SUM(G70:G71)","v":46.339944782079996},null,null,null,{"$f":"SUM(K70:K71)","v":50.943844502159997},null,4.6038997200800011,9.935056551600302E-2,null,null,null,{"$f":"SUM(R70:R71)","v":52.497368502159993},null,1.5535239999999959,3.0494832401864118E-2,null,null,null,{"$f":"SUM(Y70:Y71)","v":55.34948850216},null,2.8521200000000064,5.4328818403205421E-2,null,null,null,{"$f":"SUM(AF70:AF71)","v":57.409704502159997},null,2.0602159999999969,3.7221951923179876E-2,null,null,null,{"$f":"SUM(AM70:AM71)","v":58.09900450216},null,0.68930000000000291,1.2006680856092345E-2]
[null,null,null,null,null,null,null,null,null,null,null,null,null,null,null,null,null,null,null,null,null,null,null,null,null,null,null,"",null,null,null,null,null,null,"",null,null,null,null,null,null,""]
[]
["Loss Factor (%)",null,null,null,3.44E-2,null,null,null,3.9300000000000002E-2,null,null,null,null,null,null,3.9300000000000002E-2,null,null,null,null,null,null,3.9300000000000002E-2,null,null,null,null,null,null,3.9300000000000002E-2,null,null,null,null,null,null,3.9300000000000002E-2]
[]
["Distribution Excluding Rate Riders",null,null,null,"2015 Current Board-Approved",null,null,null,"2016 Test Year 1\nProposed",null,null,null,"Impact\n2016 TEST vs. \n2015 Bridge",null,null,"2017 Test Year 2\nProposed",null,null,null,"Impact\n2017 TEST 2 vs. \n2016 Test 1",null,null,"2018 Test Year 3\nProposed",null,null,null,"Impact\n2018 TEST 3 vs. \n2017 Test 2",null,null,"2019 Test Year 4\nProposed",null,null,null,"Impact\n2019 TEST 4 vs. \n2018 Test 3",null,null,"2020 Test Year 5 \nProposed",null,null,null,"Impact\n2020 TEST 5 vs. \n2019 Test 4"]
[null,null,"Charge Unit",null,"Rate","Volume","Charge",null,"Rate","Volume","Charge",null,"$ Change","% Change",null,"Rate","Volume","Charge",null,"$ Change","% Change",null,"Rate","Volume","Charge",null,"$ Change","% Change",null,"Rate","Volume","Charge",null,"$ Change","% Change",null,"Rate","Volume","Charge",null,"$ Change","% Change"]
[null,null,null,null,"($)",null,"($)",null,"($)",null,"($)",null,null,null,null,"($)",null,"($)",null,null,null,null,"($)",null,"($)",null,null,null,null,"($)",null,"($)",null,null,null,null,"($)",null,"($)"]
["Monthly Service Charge",null,"Monthly",null,12.56,1,{"$f":"F80*E80","v":12.56},null,{"$f":"'Rates Summary'!$E$28","v":13.98},1,{"$f":"J80*I80","v":13.98},null,{"$f":"K80-G80","v":1.42},{"$f":"IF((G80)=0,\"\",(M80/G80))","v":0.11305732484076432},null,{"$f":"'Rates Summary'!$F$28","v":18.54},1,{"$f":"Q80*P80","v":18.54},null,{"$f":"R80-K80","v":4.5599999999999987},{"$f":"IF((K80)=0,\"\",(T80/K80))","v":0.32618025751072949},null,{"$f":"'Rates Summary'!$G$28","v":21.88},1,{"$f":"X80*W80","v":21.88},null,{"$f":"Y80-R80","v":3.34},{"$f":"IF((R80)=0,\"\",(AA80/R80))","v":0.18015102481121897},null,{"$f":"'Rates Summary'!$H$28","v":25.35},1,{"$f":"AE80*AD80","v":25.35},null,{"$f":"AF80-Y80","v":3.4700000000000024},{"$f":"IF((Y80)=0,\"\",(AH80/Y80))","v":0.15859232175502755},null,{"$f":"'Rates Summary'!$I$28","v":25.96},1,{"$f":"AL80*AK80","v":25.96},null,{"$f":"AM80-AF80","v":0.60999999999999943},{"$f":"IF((AF80)=0,\"\",(AO80/AF80))","v":2.4063116370808654E-2}]
["Distribution Volumetric Rate",null,"per kWh",null,1.54E-2,{"$f":"$E$18","v":204},{"$f":"F81*E81","v":3.1415999999999999},null,{"$f":"'Rates Summary'!$E$40","v":1.3899999999999999E-2},{"$f":"$E$18","v":204},{"$f":"J81*I81","v":2.8355999999999999},null,{"$f":"K81-G81","v":-0.30600000000000005},{"$f":"IF((G81)=0,\"\",(M81/G81))","v":-9.7402597402597421E-2},null,{"$f":"'Rates Summary'!$F$40","v":8.2000000000000007E-3},{"$f":"$E$18","v":204},{"$f":"Q81*P81","v":1.6728000000000001},null,-1.1627999999999998,{"$f":"IF((K81)=0,\"\",(T81/K81))","v":-0.41007194244604311},null,{"$f":"'Rates Summary'!$G$40","v":4.1999999999999997E-3},{"$f":"$E$18","v":204},{"$f":"X81*W81","v":0.8567999999999999},null,-0.81600000000000017,{"$f":"IF((R81)=0,\"\",(AA81/R81))","v":-0.48780487804878059},null,{"$f":"'Rates Summary'!$H$40","v":0},{"$f":"$E$18","v":204},{"$f":"AE81*AD81","v":0},null,-0.8567999999999999,{"$f":"IF((Y81)=0,\"\",(AH81/Y81))","v":-1},null,{"$f":"'Rates Summary'!$I$40","v":0},{"$f":"$E$18","v":204},{"$f":"AL81*AK81","v":0},null,0,{"$f":"IF((AF81)=0,\"\",(AO81/AF81))","v":""}]
["\"Regular\" Distribution Only",null,null,null,null,null,{"$f":"SUM(G80:G81)","v":15.701600000000001},null,null,null,{"$f":"SUM(K80:K81)","v":16.8156},null,{"$f":"K82-G82","v":1.113999999999999},{"$f":"IF((G82)=0,\"\",(M82/G82))","v":7.0948183624598704E-2},null,null,null,{"$f":"SUM(R80:R81)","v":20.212799999999998},null,{"$f":"R82-K82","v":3.397199999999998},{"$f":"IF((K82)=0,\"\",(T82/K82))","v":0.20202668950260461},null,null,null,{"$f":"SUM(Y80:Y81)","v":22.736799999999999},null,{"$f":"Y82-R82","v":2.5240000000000009},{"$f":"IF((R82)=0,\"\",(AA82/R82))","v":0.12487136863769499},null,null,null,{"$f":"SUM(AF80:AF81)","v":25.35},null,{"$f":"AF82-Y82","v":2.6132000000000026},{"$f":"IF((Y82)=0,\"\",(AH82/Y82))","v":0.11493262024559317},null,null,null,{"$f":"SUM(AM80:AM81)","v":25.96},null,{"$f":"AM82-AF82","v":0.60999999999999943},{"$f":"IF((AF82)=0,\"\",(AO82/AF82))","v":2.4063116370808654E-2}]
[]
[null,"Residential (kWh) - 100, 250, 500, 800, 1000, 1500, 2000"]
[null,"GS<50kW (kWh) - 1000, 2000, 5000, 10000, 15000"]
[null,"GS>50kW (kW) - 60, 100, 500, 1000"]
[null,"Large User - range appropriate for utility"]
[null,"Lighting Classes and USL - 150 kWh and 1 kW, range appropriate for utility."]
[]
[null,null,"Note that cells with the highlighted color shown to the left indicate quantities that are loss adjusted."]

{"sheet":"Bill Impact Resi 100kWh","index":3,"n_rows":90,"n_cols":42,"rows_kept":90,"cut":false,"hidden":false,"merged":[[19,33,19,34],[2,0,2,9],[9,0,9,13],[10,0,10,13],[13,2,13,13],[19,4,19,6],[19,8,19,10],[19,12,19,13],[70,0,70,2],[19,36,19,38],[19,40,19,41],[20,2,21,2],[20,12,21,12],[20,13,21,13],[20,19,21,19],[20,20,21,20],[20,26,21,26],[20,27,21,27],[20,33,21,33],[19,15,19,17],[19,19,19,20],[19,22,19,24],[19,26,19,27],[19,29,19,31],[20,34,21,34],[20,40,21,40],[20,41,21,41],[64,0,64,2],[65,0,65,2],[76,36,76,38],[76,40,76,41],[71,0,71,2],[76,4,76,6],[76,8,76,10],[76,12,76,13],[76,15,76,17],[76,19,76,20],[76,22,76,24],[76,26,76,27],[76,29,76,31],[76,33,76,34],[77,27,78,27],[77,33,78,33],[77,34,78,34],[77,40,78,40],[77,41,78,41],[77,26,78,26],[77,2,78,2],[77,12,78,12],[77,13,78,13],[77,19,78,19],[77,20,78,20]]}
[null,null,null,null,null,null,null,null,null,null,null,null,"File Number:",{"$f":"EBNUMBER","v":"EB-2015-0083"},null,null,null,null,1]
[null,null,null,null,null,null,null,null,null,null,null,null,"Exhibit:",8]
[null,null,null,null,null,null,null,null,null,null,null,null,"Tab:",4]
[null,null,null,null,null,null,null,null,null,null,null,null,"Schedule:",3]
[null,null,null,null,null,null,null,null,null,null,null,null,"Page:"]
[]
[null,null,null,null,null,null,null,null,null,null,null,null,null,"Settlement"]
[null,null,null,null,null,null,null,null,null,null,null,null,"Date:","2015-10-20"]
[]
["Appendix 2-W"]
["Bill Impacts"]
[]
[]
["Customer Class:",null,"Residential",null,null,null,null,null,null,null,null,null,null,null,null,{"$f":"C14","v":"Residential"},null,null,null,null,null,null,null,null,null,null,null,null,null,null,null,null,null,null,null,null,{"$f":"P14","v":"Residential"}]
[]
["TOU / non-TOU:",null,"TOU"]
[]
[null,null,"Consumption",null,100," kWh"]
[]
[null,null,null,null,"2015 Current Board-Approved",null,null,null,"2016 Test Year 1\nProposed",null,null,null,"Impact\n2016 TEST vs. \n2015 Bridge",null,null,"2017 Test Year 2\nProposed",null,null,null,"Impact\n2017 TEST 2 vs. \n2016 Test 1",null,null,"2018 Test Year 3\nProposed",null,null,null,"Impact\n2018 TEST 3 vs. \n2017 Test 2",null,null,"2019 Test Year 4\nProposed",null,null,null,"Impact\n2019 TEST 4 vs. \n2018 Test 3",null,null,"2020 Test Year 5 \nProposed",null,null,null,"Impact\n2020 TEST 5 vs. \n2019 Test 4"]
[null,null,"Charge Unit",null,"Rate","Volume","Charge",null,"Rate","Volume","Charge",null,"$ Change","% Change",null,"Rate","Volume","Charge",null,"$ Change","% Change",null,"Rate","Volume","Charge",null,"$ Change","% Change",null,"Rate","Volume","Charge",null,"$ Change","% Change",null,"Rate","Volume","Charge",null,"$ Change","% Change"]
[null,null,null,null,"($)",null,"($)",null,"($)",null,"($)",null,null,null,null,"($)",null,"($)",null,null,null,null,"($)",null,"($)",null,null,null,null,"($)",null,"($)",null,null,null,null,"($)",null,"($)"]
["Monthly Service Charge",null,"Monthly",null,12.56,1,{"$f":"F23*E23","v":12.56},null,{"$f":"'Rates Summary'!$E$28","v":13.98},1,{"$f":"J23*I23","v":13.98},null,{"$f":"K23-G23","v":1.42},{"$f":"IF((G23)=0,\"\",(M23/G23))","v":0.11305732484076432},null,{"$f":"'Rates Summary'!$F$28","v":18.54},1,{"$f":"Q23*P23","v":18.54},null,{"$f":"R23-K23","v":4.5599999999999987},{"$f":"IF((K23)=0,\"\",(T23/K23))","v":0.32618025751072949},null,{"$f":"'Rates Summary'!$G$28","v":21.88},1,{"$f":"X23*W23","v":21.88},null,{"$f":"Y23-R23","v":3.34},{"$f":"IF((R23)=0,\"\",(AA23/R23))","v":0.18015102481121897},null,{"$f":"'Rates Summary'!$H$28","v":25.35},1,{"$f":"AE23*AD23","v":25.35},null,{"$f":"AF23-Y23","v":3.4700000000000024},{"$f":"IF((Y23)=0,\"\",(AH23/Y23))","v":0.15859232175502755},null,{"$f":"'Rates Summary'!$I$28","v":25.96},1,{"$f":"AL23*AK23","v":25.96},null,{"$f":"AM23-AF23","v":0.60999999999999943},{"$f":"IF((AF23)=0,\"\",(AO23/AF23))","v":2.4063116370808654E-2}]
["Smart Meter (SMIRR) Rate Rider",null,"Monthly",null,2.63,1,{"$f":"F24*E24","v":2.63},null,0,1,{"$f":"J24*I24","v":0},null,{"$f":"K24-G24","v":-2.63},{"$f":"IF((G24)=0,\"\",(M24/G24))","v":-1},null,0,1,{"$f":"Q24*P24","v":0},null,0,{"$f":"IF((K24)=0,\"\",(T24/K24))","v":""},null,0,1,{"$f":"X24*W24","v":0},null,0,{"$f":"IF((R24)=0,\"\",(AA24/R24))","v":""},null,0,1,{"$f":"AE24*AD24","v":0},null,0,{"$f":"IF((Y24)=0,\"\",(AH24/Y24))","v":""},null,0,1,{"$f":"AL24*AK24","v":0},null,0,{"$f":"IF((AF24)=0,\"\",(AO24/AF24))","v":""}]
["Rate Rider Smart Meters Capital (2016)",null,"Monthly",null,0,1,0,null,{"$f":"'Rates Summary'!C10","v":0.25},1,{"$f":"J25*I25","v":0.25},null,{"$f":"K25-G25","v":0.25},null,null,0,1,{"$f":"Q25*P25","v":0},null,-0.25,-1,null,0,1,{"$f":"X25*W25","v":0},null,0,"",null,0,1,{"$f":"AE25*AD25","v":0},null,0,"",null,0,1,{"$f":"AL25*AK25","v":0},null,0,""]
["Rate Rider Recovery of Stranded Meters",null,"Monthly",null,0,1,0,null,{"$f":"'Rates Summary'!$C11","v":3.69},1,3.69,null,3.69,null,null,0,1,0,null,-3.69,-1,null,0,1,0,null,0,"",null,0,1,0,null,0,"",null,0,1,0,null,0,""]
[null,null,null,null,null,1,0,null,null,1,0,null,0,{"$f":"IF((G27)=0,\"\",(M27/G27))","v":""},null,null,1,0,null,0,"",null,null,1,0,null,0,"",null,null,1,0,null,0,"",null,null,1,0,null,0,""]
[null,null,null,null,null,1,0,null,null,1,0,null,0,"",null,null,1,0,null,0,"",null,null,1,0,null,0,"",null,null,1,0,null,0,"",null,null,1,0,null,0,""]
["Distribution Volumetric Rate",null,"per kWh",null,1.54E-2,{"$f":"$E$18","v":100},{"$f":"F29*E29","v":1.54},null,{"$f":"'Rates Summary'!$E$40","v":1.3899999999999999E-2},{"$f":"$E$18","v":100},1.39,null,-0.15000000000000013,-9.7402597402597491E-2,null,{"$f":"'Rates Summary'!$F$40","v":8.2000000000000007E-3},{"$f":"$E$18","v":100},0.82000000000000006,null,-0.56999999999999984,-0.41007194244604306,null,{"$f":"'Rates Summary'!$G$40","v":4.1999999999999997E-3},{"$f":"$E$18","v":100},0.42,null,-0.40000000000000008,-0.48780487804878053,null,{"$f":"'Rates Summary'!$H$40","v":0},{"$f":"$E$18","v":100},0,null,-0.42,-1,null,{"$f":"'Rates Summary'!$I$40","v":0},{"$f":"$E$18","v":100},0,null,0,""]
["Rate Rider Tax Change (2015)",null,"per kWh",null,-1E-4,{"$f":"$E$18","v":100},{"$f":"F30*E30","v":-0.01},null,0,{"$f":"$E$18","v":100},0,null,0.01,{"$f":"IF((G30)=0,\"\",(M30/G30))","v":-1},null,0,{"$f":"$E$18","v":100},0,null,0,"",null,0,{"$f":"$E$18","v":100},0,null,0,"",null,0,{"$f":"$E$18","v":100},0,null,0,"",null,0,{"$f":"$E$18","v":100},0,null,0,""]
["LRAM VA (2016)",null,"per kWh",null,0,{"$f":"$E$18","v":100},0,null,{"$f":"'Rates Summary'!C7","v":2.9999999999999997E-4},100,0.03,null,0.03,null,null,0,100,0,null,-0.03,{"$f":"IF((K31)=0,\"\",(T31/K31))","v":-1},null,0,100,0,null,0,"",null,0,100,0,null,0,"",null,0,100,0,null,0,""]
["Rate Rider Incremental Capital 2012 True-Up (2016)",null,"per kWh",null,0,{"$f":"$E$18","v":100},0,null,{"$f":"'Rates Summary'!C9","v":4.0000000000000002E-4},100,0.04,null,0.04,null,null,0,100,0,null,-0.04,{"$f":"IF((K32)=0,\"\",(T32/K32))","v":-1},null,0,100,0,null,0,"",null,0,100,0,null,0,"",null,0,100,0,null,0,""]
[null,null,"per kWh",null,0,{"$f":"$E$19","v":0},0,null,null,{"$f":"$E$19","v":0},0,null,0,{"$f":"IF((G33)=0,\"\",(M33/G33))","v":""},null,null,{"$f":"$E$19","v":0},0,null,0,"",null,null,{"$f":"$E$19","v":0},0,null,0,"",null,null,{"$f":"$E$19","v":0},0,null,0,"",null,null,{"$f":"$E$19","v":0},0,null,0,""]
[null,null,null,null,0,100,0,null,null,100,0,null,0,"",null,null,100,0,null,0,"",null,null,100,0,null,0,"",null,null,100,0,null,0,"",null,null,100,0,null,0,""]
[null,null,null,null,null,100,0,null,null,100,0,null,0,"",null,null,100,0,null,0,"",null,null,100,0,null,0,"",null,null,100,0,null,0,"",null,null,100,0,null,0,""]
[null,null,null,null,null,100,0,null,null,100,0,null,0,"",null,null,100,0,null,0,"",null,null,100,0,null,0,"",null,null,100,0,null,0,"",null,null,100,0,null,0,""]
[null,null,null,null,null,100,0,null,null,100,0,null,0,"",null,null,100,0,null,0,"",null,null,100,0,null,0,"",null,null,100,0,null,0,"",null,null,100,0,null,0,""]
[null,null,null,null,null,100,0,null,null,100,0,null,0,"",null,null,100,0,null,0,"",null,null,100,0,null,0,"",null,null,100,0,null,0,"",null,null,100,0,null,0,""]
["Sub-Total A (excluding pass through)",null,null,null,null,null,{"$f":"SUM(G23:G38)","v":16.72},null,null,null,{"$f":"SUM(K23:K38)","v":19.380000000000003},null,{"$f":"K39-G39","v":2.6600000000000037},0.15909090909090931,null,null,null,{"$f":"SUM(R23:R38)","v":19.36},null,-2.0000000000003126E-2,-1.0319917440662087E-3,null,null,null,{"$f":"SUM(Y23:Y38)","v":22.3},null,2.9400000000000013,0.15185950413223148,null,null,null,{"$f":"SUM(AF23:AF38)","v":25.35},null,3.0500000000000007,0.13677130044843053,null,null,null,{"$f":"SUM(AM23:AM38)","v":25.96},null,0.60999999999999943,2.4063116370808654E-2]
["Deferral/Variance Account Disposition Rate Rider (2016)",null,"per kWh",null,0,{"$f":"$E$18","v":100},{"$f":"F40*E40","v":0},null,{"$f":"'Rates Summary'!C5","v":6.9999999999999999E-4},{"$f":"$E$18","v":100},{"$f":"J40*I40","v":6.9999999999999993E-2},null,{"$f":"K40-G40","v":6.9999999999999993E-2},{"$f":"IF((G40)=0,\"\",(M40/G40))","v":""},null,0,{"$f":"$E$18","v":100},{"$f":"Q40*P40","v":0},null,-6.9999999999999993E-2,-1,null,0,{"$f":"$E$18","v":100},{"$f":"X40*W40","v":0},null,0,"",null,0,{"$f":"$E$18","v":100},{"$f":"AE40*AD40","v":0},null,0,"",null,0,{"$f":"$E$18","v":100},{"$f":"AL40*AK40","v":0},null,0,""]
[null,null,null,null,null,{"$f":"$E$18","v":100},{"$f":"F41*E41","v":0},null,{"$f":"E41","v":0},{"$f":"$E$18","v":100},{"$f":"J41*I41","v":0},null,{"$f":"K41-G41","v":0},{"$f":"IF((G41)=0,\"\",(M41/G41))","v":""},null,null,{"$f":"$E$18","v":100},{"$f":"Q41*P41","v":0},null,0,"",null,null,{"$f":"$E$18","v":100},{"$f":"X41*W41","v":0},null,0,"",null,null,{"$f":"$E$18","v":100},{"$f":"AE41*AD41","v":0},null,0,"",null,null,{"$f":"$E$18","v":100},{"$f":"AL41*AK41","v":0},null,0,""]
["Rate Rider CGAAP Account 1576 (2016)",null,"per kWh",null,0,100,0,null,{"$f":"'Rates Summary'!$C$8","v":-1.0800000000000001E-2},100,-1.08,null,-1.08,"",null,0,100,0,null,1.08,-1,null,{"$f":"P42","v":0},100,0,null,0,"",null,{"$f":"W42","v":0},100,0,null,0,"",null,{"$f":"AD42","v":0},100,0,null,0,""]
["Disposition of Global Adjustment (2015)  \nApplicable to Non-RPP Customers",null,"per kWh",null,1.5599999999999999E-2,0,0,null,0,100,0,null,0,"",null,0,100,0,null,0,"",null,0,100,0,null,0,"",null,0,100,0,null,0,"",null,0,100,0,null,0,""]
["Disposition of Global Adjustment (2016) \nApplicable to Non-RPP Customers",null,"per kWh",null,0,100,0,null,{"$f":"'Rates Summary'!C6","v":2.0500000000000001E-2},0,0,null,0,"",null,0,100,0,null,0,"",null,0,100,0,null,0,"",null,0,100,0,null,0,"",null,0,100,0,null,0,""]
["Low Voltage Service Charge",null,"per kWh",null,6.9999999999999999E-4,100,{"$f":"F45*E45","v":6.9999999999999993E-2},null,{"$f":"'Rates Summary'!C15","v":1.1999999999999999E-3},100,{"$f":"J45*I45","v":0.12},null,{"$f":"K45-G45","v":0.05},{"$f":"IF((G45)=0,\"\",(M45/G45))","v":0.71428571428571441},null,{"$f":"I45","v":1.1999999999999999E-3},100,{"$f":"Q45*P45","v":0.12},null,{"$f":"R45-K45","v":0},0,null,{"$f":"P45","v":1.1999999999999999E-3},100,{"$f":"X45*W45","v":0.12},null,{"$f":"Y45-R45","v":0},0,null,{"$f":"W45","v":1.1999999999999999E-3},100,{"$f":"AE45*AD45","v":0.12},null,{"$f":"AF45-Y45","v":0},0,null,{"$f":"AD45","v":1.1999999999999999E-3},100,{"$f":"AL45*AK45","v":0.12},null,{"$f":"AM45-AF45","v":0},0]
["Line Losses on Cost of Power",null,"per kWh",null,{"$f":"IF(ISBLANK(C16)=TRUE, 0, IF(C16=\"TOU\", 0.64*$E$56+0.18*$E$57+0.18*$E$58, IF(AND(C16=\"non-TOU\", F60>0), E60,E59)))","v":0.10766000000000001},{"$f":"$E$18*(1+$E$75)-$E$18","v":3.4399999999999977},0.3703503999999998,null,{"$f":"E46","v":0.10766000000000001},{"$f":"$E$18*(1+$I$75)-$E$18","v":3.9299999999999926},0.42310379999999925,null,5.2753399999999451E-2,0.14244186046511487,null,{"$f":"I46","v":0.10766000000000001},{"$f":"$E$18*(1+$I$75)-$E$18","v":3.9299999999999926},{"$f":"Q46*P46","v":0.42310379999999925},null,{"$f":"R46-K46","v":0},0,null,{"$f":"P46","v":0.10766000000000001},{"$f":"$E$18*(1+$I$75)-$E$18","v":3.9299999999999926},{"$f":"X46*W46","v":0.42310379999999925},null,{"$f":"Y46-R46","v":0},0,null,{"$f":"W46","v":0.10766000000000001},{"$f":"$E$18*(1+$I$75)-$E$18","v":3.9299999999999926},{"$f":"AE46*AD46","v":0.42310379999999925},null,{"$f":"AF46-Y46","v":0},0,null,{"$f":"AD46","v":0.10766000000000001},{"$f":"$E$18*(1+$I$75)-$E$18","v":3.9299999999999926},{"$f":"AL46*AK46","v":0.42310379999999925},null,{"$f":"AM46-AF46","v":0},0]
["Smart Meter Entity Charge",null,"Monthly",null,0.79,1,{"$f":"F47*E47","v":0.79},null,0.79,1,{"$f":"J47*I47","v":0.79},null,{"$f":"K47-G47","v":0},null,null,0.79,1,{"$f":"Q47*P47","v":0.79},null,{"$f":"R47-K47","v":0},0,null,0.79,1,{"$f":"X47*W47","v":0.79},null,{"$f":"Y47-R47","v":0},0,null,0,1,{"$f":"AE47*AD47","v":0},null,{"$f":"AF47-Y47","v":-0.79},-1,null,0,1,{"$f":"AL47*AK47","v":0},null,{"$f":"AM47-AF47","v":0},""]
["Sub-Total B - Distribution (includes Sub-Total A)",null,null,null,null,null,{"$f":"SUM(G40:G47)+G39","v":17.950350399999998},null,null,null,{"$f":"SUM(K40:K47)+K39","v":19.703103800000001},null,{"$f":"K48-G48","v":1.7527534000000031},{"$f":"IF((G48)=0,\"\",(M48/G48))","v":9.7644522861236371E-2},null,null,null,{"$f":"SUM(R40:R47)+R39","v":20.693103799999999},null,{"$f":"R48-K48","v":0.98999999999999844},5.024589070073307E-2,null,null,null,{"$f":"SUM(Y40:Y47)+Y39","v":23.633103800000001},null,{"$f":"Y48-R48","v":2.9400000000000013},0.14207631819833627,null,null,null,{"$f":"SUM(AF40:AF47)+AF39","v":25.893103800000002},null,{"$f":"AF48-Y48","v":2.2600000000000016},9.5628573340417578E-2,null,null,null,{"$f":"SUM(AM40:AM47)+AM39","v":26.503103800000002},null,{"$f":"AM48-AF48","v":0.60999999999999943},2.3558396270747555E-2]
["RTSR - Network",null,"per kWh",null,6.7000000000000002E-3,{"$f":"$E$18*(1+$E$75)","v":103.44},{"$f":"F49*E49","v":0.693048},null,{"$f":"'Rates Summary'!C17","v":7.1000000000000004E-3},{"$f":"$E$18*(1+$I$75)","v":103.92999999999999},{"$f":"J49*I49","v":0.73790299999999998},null,4.4854999999999978E-2,6.472134686197778E-2,null,{"$f":"I49","v":7.1000000000000004E-3},{"$f":"$E$18*(1+P75)","v":103.92999999999999},{"$f":"Q49*P49","v":0.73790299999999998},null,0,0,null,{"$f":"P49","v":7.1000000000000004E-3},{"$f":"$E$18*(1+W75)","v":103.92999999999999},{"$f":"X49*W49","v":0.73790299999999998},null,0,0,null,{"$f":"W49","v":7.1000000000000004E-3},{"$f":"$E$18*(1+AD75)","v":103.92999999999999},{"$f":"AE49*AD49","v":0.73790299999999998},null,0,0,null,{"$f":"AD49","v":7.1000000000000004E-3},{"$f":"$E$18*(1+AK75)","v":103.92999999999999},{"$f":"AL49*AK49","v":0.73790299999999998},null,0,0]
["RTSR - Line and Transformation Connection",null,"per kWh",null,5.1000000000000004E-3,{"$f":"F49","v":103.44},{"$f":"F50*E50","v":0.52754400000000001},null,{"$f":"'Rates Summary'!C18","v":5.5999999999999999E-3},{"$f":"J49","v":103.92999999999999},{"$f":"J50*I50","v":0.58200799999999997},null,5.4463999999999957E-2,0.1032406775548579,null,{"$f":"I50","v":5.5999999999999999E-3},{"$f":"Q49","v":103.92999999999999},{"$f":"Q50*P50","v":0.58200799999999997},null,0,0,null,{"$f":"P50","v":5.5999999999999999E-3},{"$f":"X49","v":103.92999999999999},{"$f":"X50*W50","v":0.58200799999999997},null,0,0,null,{"$f":"W50","v":5.5999999999999999E-3},{"$f":"AE49","v":103.92999999999999},{"$f":"AE50*AD50","v":0.58200799999999997},null,0,0,null,{"$f":"AD50","v":5.5999999999999999E-3},{"$f":"AL49","v":103.92999999999999},{"$f":"AL50*AK50","v":0.58200799999999997},null,0,0]
["Sub-Total C - Delivery (including Sub-Total B)",null,null,null,null,null,{"$f":"SUM(G48:G50)","v":19.170942399999998},null,null,null,{"$f":"SUM(K48:K50)","v":21.023014799999999},null,1.8520724000000008,9.6608312797392848E-2,null,null,null,{"$f":"SUM(R48:R50)","v":22.013014799999997},null,0.98999999999999844,4.709124782616804E-2,null,null,null,{"$f":"SUM(Y48:Y50)","v":24.953014799999998},null,2.9400000000000013,0.13355735353432832,null,null,null,{"$f":"SUM(AF48:AF50)","v":27.2130148},null,2.2600000000000016,9.0570218393009633E-2,null,null,null,{"$f":"SUM(AM48:AM50)","v":27.823014799999999},null,0.60999999999999943,2.2415744983903783E-2]
["Wholesale Market Service Charge (WMSC)",null,"per kWh",null,4.4000000000000003E-3,{"$f":"F50","v":103.44},{"$f":"F52*E52","v":0.45513600000000004},null,{"$f":"'Rates Summary'!C19","v":4.4000000000000003E-3},{"$f":"J50","v":103.92999999999999},{"$f":"J52*I52","v":0.45729199999999998},null,2.1559999999999357E-3,4.7370456303169502E-3,null,{"$f":"I52","v":4.4000000000000003E-3},{"$f":"Q50","v":103.92999999999999},{"$f":"Q52*P52","v":0.45729199999999998},null,0,0,null,{"$f":"P52","v":4.4000000000000003E-3},{"$f":"X50","v":103.92999999999999},{"$f":"X52*W52","v":0.45729199999999998},null,0,0,null,{"$f":"W52","v":4.4000000000000003E-3},{"$f":"AE50","v":103.92999999999999},{"$f":"AE52*AD52","v":0.45729199999999998},null,0,0,null,{"$f":"AD52","v":4.4000000000000003E-3},{"$f":"AL50","v":103.92999999999999},{"$f":"AL52*AK52","v":0.45729199999999998},null,0,0]
["Rural and Remote Rate Protection (RRRP)",null,"per kWh",null,1.2999999999999999E-3,{"$f":"F50","v":103.44},0.13447199999999998,null,{"$f":"'Rates Summary'!C20","v":1.2999999999999999E-3},{"$f":"J50","v":103.92999999999999},0.13510899999999998,null,6.3699999999999868E-4,4.7370456303170829E-3,null,{"$f":"I53","v":1.2999999999999999E-3},{"$f":"Q50","v":103.92999999999999},0.13510899999999998,null,0,0,null,{"$f":"P53","v":1.2999999999999999E-3},{"$f":"X50","v":103.92999999999999},0.13510899999999998,null,0,0,null,{"$f":"W53","v":1.2999999999999999E-3},{"$f":"AE50","v":103.92999999999999},0.13510899999999998,null,0,0,null,{"$f":"AD53","v":1.2999999999999999E-3},{"$f":"AL50","v":103.92999999999999},0.13510899999999998,null,0,0]
["Standard Supply Service Charge",null,"Monthly",null,0.25,1,0.25,null,{"$f":"'Rates Summary'!C21","v":0.25},1,0.25,null,0,0,null,{"$f":"I54","v":0.25},1,0.25,null,0,0,null,{"$f":"P54","v":0.25},1,0.25,null,0,0,null,{"$f":"W54","v":0.25},1,0.25,null,0,0,null,{"$f":"AD54","v":0.25},1,0.25,null,0,0]
["Debt Retirement Charge (DRC)",null,"per kWh",null,7.0000000000000001E-3,{"$f":"E18","v":100},0.70000000000000007,null,0,{"$f":"E18","v":100},0,null,-0.70000000000000007,-1,null,0,{"$f":"J55","v":100},0,null,0,"",null,0,{"$f":"Q55","v":100},0,null,0,"",null,0,{"$f":"X55","v":100},0,null,0,"",null,0,{"$f":"AE55","v":100},0,null,0,""]
["TOU - Off Peak",null,"per kWh",null,8.3000000000000004E-2,{"$f":"0.64*$E$18","v":64},5.3120000000000003,null,{"$f":"E56","v":8.3000000000000004E-2},{"$f":"F56","v":64},5.3120000000000003,null,0,0,null,{"$f":"I56","v":8.3000000000000004E-2},{"$f":"J56","v":64},5.3120000000000003,null,0,0,null,{"$f":"P56","v":8.3000000000000004E-2},{"$f":"Q56","v":64},5.3120000000000003,null,0,0,null,{"$f":"W56","v":8.3000000000000004E-2},{"$f":"X56","v":64},5.3120000000000003,null,0,0,null,{"$f":"AD56","v":8.3000000000000004E-2},{"$f":"AE56","v":64},5.3120000000000003,null,0,0]
["TOU - Mid Peak",null,"per kWh",null,0.128,{"$f":"0.18*$E$18","v":18},2.3040000000000003,null,{"$f":"E57","v":0.128},{"$f":"F57","v":18},2.3040000000000003,null,0,0,null,{"$f":"I57","v":0.128},18,2.3040000000000003,null,0,0,null,{"$f":"P57","v":0.128},18,2.3040000000000003,null,0,0,null,{"$f":"W57","v":0.128},18,2.3040000000000003,null,0,0,null,{"$f":"AD57","v":0.128},18,2.3040000000000003,null,0,0]
["TOU - On Peak",null,"per kWh",null,0.17499999999999999,{"$f":"0.18*$E$18","v":18},3.15,null,0.17499999999999999,{"$f":"F58","v":18},3.15,null,0,0,null,0.17499999999999999,18,3.15,null,0,0,null,0.17499999999999999,18,3.15,null,0,0,null,0.17499999999999999,18,3.15,null,0,0,null,0.17499999999999999,18,3.15,null,0,0]
["Energy - RPP - Tier 1",null,"per kWh",null,9.9000000000000005E-2,{"$f":"IF(AND($S$1=1, E18>=600), 600, IF(AND($S$1=1, AND(E18<600, E18>=0)), E18, IF(AND($S$1=2, E18>=1000), 1000, IF(AND($S$1=2, AND(E18<1000, E18>=0)), E18))))","v":100},{"$f":"F59*E59","v":9.9},null,9.9000000000000005E-2,{"$f":"F59","v":100},{"$f":"J59*I59","v":9.9},null,0,0,null,9.9000000000000005E-2,100,{"$f":"Q59*P59","v":9.9},null,0,0,null,9.9000000000000005E-2,100,{"$f":"X59*W59","v":9.9},null,0,0,null,9.9000000000000005E-2,100,{"$f":"AE59*AD59","v":9.9},null,0,0,null,9.9000000000000005E-2,100,{"$f":"AL59*AK59","v":9.9},null,0,0]
["Energy - RPP - Tier 2",null,"per kWh",null,0.11600000000000001,{"$f":"IF(AND($S$1=1, E18>=600), E18-600, IF(AND($S$1=1, AND(E18<600, E18>=0)), 0, IF(AND($S$1=2, E18>=1000), E18-1000, IF(AND($S$1=2, AND(E18<1000, E18>=0)), 0))))","v":0},{"$f":"F60*E60","v":0},null,0.11600000000000001,{"$f":"F60","v":0},{"$f":"J60*I60","v":0},null,0,"",null,0.11600000000000001,0,{"$f":"Q60*P60","v":0},null,0,"",null,0.11600000000000001,0,{"$f":"X60*W60","v":0},null,0,"",null,0.11600000000000001,0,{"$f":"AE60*AD60","v":0},null,0,"",null,0.11600000000000001,0,{"$f":"AL60*AK60","v":0},null,0,""]
[null,null,null,null,null,null,null,null,null,null,null,null,null,null,null,null,null,null,null,null,"",null,null,null,null,null,null,"",null,null,null,null,null,null,"",null,null,null,null,null,null,""]
["Total Bill on TOU (before Taxes)",null,null,null,null,null,{"$f":"SUM(G52:G58,G51)","v":31.476550400000001},null,null,null,{"$f":"SUM(K52:K58,K51)","v":32.631415799999999},null,{"$f":"K62-G62","v":1.1548653999999985},{"$f":"IF((G62)=0,\"\",(M62/G62))","v":3.668970663316392E-2},null,null,null,{"$f":"SUM(R52:R58,R51)","v":33.621415799999994},null,{"$f":"R62-K62","v":0.98999999999999488},3.0338861361939279E-2,null,null,null,{"$f":"SUM(Y52:Y58,Y51)","v":36.561415799999999},null,{"$f":"Y62-R62","v":2.9400000000000048},8.7444265211461009E-2,null,null,null,{"$f":"SUM(AF52:AF58,AF51)","v":38.821415799999997},null,{"$f":"AF62-Y62","v":2.259999999999998},6.1813798797146088E-2,null,null,null,{"$f":"SUM(AM52:AM58,AM51)","v":39.431415799999996},null,{"$f":"AM62-AF62","v":0.60999999999999943},1.5712976650377585E-2]
["HST",null,null,null,0.13,null,{"$f":"G62*E63","v":4.0919515520000003},null,0.13,null,{"$f":"K62*I63","v":4.2420840540000002},null,0.15013250199999995,3.6689706633163954E-2,null,0.13,null,{"$f":"R62*P63","v":4.3707840539999996},null,{"$f":"R63-K63","v":0.12869999999999937},3.0338861361939286E-2,null,0.13,null,{"$f":"Y62*W63","v":4.7529840539999997},null,{"$f":"Y63-R63","v":0.3822000000000001},8.744426521146087E-2,null,0.13,null,{"$f":"AF62*AD63","v":5.0467840539999997},null,{"$f":"AF63-Y63","v":0.29380000000000006},6.1813798797146158E-2,null,0.13,null,{"$f":"AM62*AK63","v":5.1260840539999997},null,{"$f":"AM63-AF63","v":7.9299999999999926E-2},1.5712976650377585E-2]
["Total Bill (including HST)",null,null,null,null,null,{"$f":"G62+G63","v":35.568501951999998},null,null,null,{"$f":"K62+K63","v":36.873499854000002},null,1.3049979020000038,3.6689706633164079E-2,null,null,null,{"$f":"R62+R63","v":37.992199853999992},null,1.1186999999999898,3.0338861361939157E-2,null,null,null,{"$f":"Y62+Y63","v":41.314399854000001},null,3.3222000000000094,8.7444265211461106E-2,null,null,null,{"$f":"AF62+AF63","v":43.868199853999997},null,2.5537999999999954,6.1813798797146033E-2,null,null,null,{"$f":"AM62+AM63","v":44.557499854},null,0.68930000000000291,1.5712976650377665E-2]
["Ontario Clean Energy Benefit 1",null,null,null,null,null,{"$f":"ROUND(-G64*10%,2)","v":-3.56},null,null,null,0,null,3.56,-1,null,null,null,0,null,0,"",null,null,null,0,null,0,"",null,null,null,0,null,0,"",null,null,null,0,null,0,""]
["Total Bill on TOU (including OCEB)",null,null,null,null,null,{"$f":"G64+G65","v":32.008501951999996},null,null,null,{"$f":"K64+K65","v":36.873499854000002},null,4.864997902000006,0.15199080260911821,null,null,null,{"$f":"R64+R65","v":37.992199853999992},null,1.1186999999999898,3.0338861361939157E-2,null,null,null,{"$f":"Y64+Y65","v":41.314399854000001},null,3.3222000000000094,8.7444265211461106E-2,null,null,null,{"$f":"AF64+AF65","v":43.868199853999997},null,2.5537999999999954,6.1813798797146033E-2,null,null,null,{"$f":"AM64+AM65","v":44.557499854},null,0.68930000000000291,1.5712976650377665E-2]
[null,null,null,null,null,null,null,null,null,null,null,null,null,null,null,null,null,null,null,null,"",null,null,null,null,null,null,"",null,null,null,null,null,null,"",null,null,null,null,null,null,""]
["Total Bill on RPP (before Taxes)",null,null,null,null,null,{"$f":"SUM(G59:G60,G52:G55,G51)","v":30.610550399999997},null,null,null,{"$f":"SUM(K59:K60,K52:K55,K51)","v":31.7654158},null,{"$f":"K68-G68","v":1.154865400000002},{"$f":"IF((G68)=0,\"\",(M68/G68))","v":3.7727691430207086E-2},null,null,null,{"$f":"SUM(R59:R60,R52:R55,R51)","v":32.755415799999994},null,{"$f":"R68-K68","v":0.98999999999999488},3.1165970130319996E-2,null,null,null,{"$f":"SUM(Y59:Y60,Y52:Y55,Y51)","v":35.695415799999999},null,{"$f":"Y68-R68","v":2.9400000000000048},8.9756149576950425E-2,null,null,null,{"$f":"SUM(AF59:AF60,AF52:AF55,AF51)","v":37.955415799999997},null,{"$f":"AF68-Y68","v":2.259999999999998},6.3313452143622259E-2,null,null,null,{"$f":"SUM(AM59:AM60,AM52:AM55,AM51)","v":38.565415799999997},null,{"$f":"AM68-AF68","v":0.60999999999999943},1.607148774800142E-2]
["HST",null,null,null,0.13,null,{"$f":"G68*E69","v":3.9793715519999999},null,0.13,null,{"$f":"K68*I69","v":4.1295040539999999},null,0.15013250199999995,{"$f":"IF((G69)=0,\"\",(M69/G69))","v":3.7727691430207003E-2},null,0.13,null,{"$f":"R68*P69","v":4.2582040539999992},null,{"$f":"R69-K69","v":0.12869999999999937},3.1165970130320006E-2,null,0.13,null,{"$f":"Y68*W69","v":4.6404040540000002},null,{"$f":"Y69-R69","v":0.38220000000000098},8.9756149576950509E-2,null,0.13,null,{"$f":"AF68*AD69","v":4.9342040539999994},null,{"$f":"AF69-Y69","v":0.29379999999999917},6.3313452143622134E-2,null,0.13,null,{"$f":"AM68*AK69","v":5.0135040539999993},null,{"$f":"AM69-AF69","v":7.9299999999999926E-2},1.607148774800142E-2]
["Total Bill (including HST)",null,null,null,null,null,{"$f":"G68+G69","v":34.589921951999997},null,null,null,{"$f":"K68+K69","v":35.894919854000001},null,1.3049979020000038,3.7727691430207128E-2,null,null,null,{"$f":"R68+R69","v":37.013619853999991},null,1.1186999999999898,3.1165970130319874E-2,null,null,null,{"$f":"Y68+Y69","v":40.335819854},null,3.3222000000000094,8.9756149576950536E-2,null,null,null,{"$f":"AF68+AF69","v":42.889619853999996},null,2.5537999999999954,6.3313452143622204E-2,null,null,null,{"$f":"AM68+AM69","v":43.578919853999999},null,0.68930000000000291,1.6071487748001503E-2]
["Ontario Clean Energy Benefit 1",null,null,null,null,null,{"$f":"ROUND(-G70*10%,2)","v":-3.46},null,null,null,0,null,3.46,-1,null,null,null,0,null,0,"",null,null,null,0,null,0,"",null,null,null,0,null,0,"",null,null,null,0,null,0,""]
["Total Bill on RPP (including OCEB)",null,null,null,null,null,{"$f":"SUM(G70:G71)","v":31.129921951999997},null,null,null,{"$f":"SUM(K70:K71)","v":35.894919854000001},null,4.7649979020000046,0.15306809664821114,null,null,null,{"$f":"SUM(R70:R71)","v":37.013619853999991},null,1.1186999999999898,3.1165970130319874E-2,null,null,null,{"$f":"SUM(Y70:Y71)","v":40.335819854},null,3.3222000000000094,8.9756149576950536E-2,null,null,null,{"$f":"SUM(AF70:AF71)","v":42.889619853999996},null,2.5537999999999954,6.3313452143622204E-2,null,null,null,{"$f":"SUM(AM70:AM71)","v":43.578919853999999},null,0.68930000000000291,1.6071487748001503E-2]
[null,null,null,null,null,null,null,null,null,null,null,null,null,null,null,null,null,null,null,null,null,null,null,null,null,null,null,"",null,null,null,null,null,null,"",null,null,null,null,null,null,""]
[]
["Loss Factor (%)",null,null,null,3.44E-2,null,null,null,3.9300000000000002E-2,null,null,null,null,null,null,3.9300000000000002E-2,null,null,null,null,null,null,3.9300000000000002E-2,null,null,null,null,null,null,3.9300000000000002E-2,null,null,null,null,null,null,3.9300000000000002E-2]
[]
["Distribution Excluding Rate Riders",null,null,null,"2015 Current Board-Approved",null,null,null,"2016 Test Year 1\nProposed",null,null,null,"Impact\n2016 TEST vs. \n2015 Bridge",null,null,"2017 Test Year 2\nProposed",null,null,null,"Impact\n2017 TEST 2 vs. \n2016 Test 1",null,null,"2018 Test Year 3\nProposed",null,null,null,"Impact\n2018 TEST 3 vs. \n2017 Test 2",null,null,"2019 Test Year 4\nProposed",null,null,null,"Impact\n2019 TEST 4 vs. \n2018 Test 3",null,null,"2020 Test Year 5 \nProposed",null,null,null,"Impact\n2020 TEST 5 vs. \n2019 Test 4"]
[null,null,"Charge Unit",null,"Rate","Volume","Charge",null,"Rate","Volume","Charge",null,"$ Change","% Change",null,"Rate","Volume","Charge",null,"$ Change","% Change",null,"Rate","Volume","Charge",null,"$ Change","% Change",null,"Rate","Volume","Charge",null,"$ Change","% Change",null,"Rate","Volume","Charge",null,"$ Change","% Change"]
[null,null,null,null,"($)",null,"($)",null,"($)",null,"($)",null,null,null,null,"($)",null,"($)",null,null,null,null,"($)",null,"($)",null,null,null,null,"($)",null,"($)",null,null,null,null,"($)",null,"($)"]
["Monthly Service Charge",null,"Monthly",null,12.56,1,{"$f":"F80*E80","v":12.56},null,{"$f":"'Rates Summary'!$E$28","v":13.98},1,{"$f":"J80*I80","v":13.98},null,{"$f":"K80-G80","v":1.42},{"$f":"IF((G80)=0,\"\",(M80/G80))","v":0.11305732484076432},null,{"$f":"'Rates Summary'!$F$28","v":18.54},1,{"$f":"Q80*P80","v":18.54},null,{"$f":"R80-K80","v":4.5599999999999987},{"$f":"IF((K80)=0,\"\",(T80/K80))","v":0.32618025751072949},null,{"$f":"'Rates Summary'!$G$28","v":21.88},1,{"$f":"X80*W80","v":21.88},null,{"$f":"Y80-R80","v":3.34},{"$f":"IF((R80)=0,\"\",(AA80/R80))","v":0.18015102481121897},null,{"$f":"'Rates Summary'!$H$28","v":25.35},1,{"$f":"AE80*AD80","v":25.35},null,{"$f":"AF80-Y80","v":3.4700000000000024},{"$f":"IF((Y80)=0,\"\",(AH80/Y80))","v":0.15859232175502755},null,{"$f":"'Rates Summary'!$I$28","v":25.96},1,{"$f":"AL80*AK80","v":25.96},null,{"$f":"AM80-AF80","v":0.60999999999999943},{"$f":"IF((AF80)=0,\"\",(AO80/AF80))","v":2.4063116370808654E-2}]
["Distribution Volumetric Rate",null,"per kWh",null,1.54E-2,{"$f":"$E$18","v":100},{"$f":"F81*E81","v":1.54},null,{"$f":"'Rates Summary'!$E$40","v":1.3899999999999999E-2},{"$f":"$E$18","v":100},{"$f":"J81*I81","v":1.39},null,{"$f":"K81-G81","v":-0.15000000000000013},{"$f":"IF((G81)=0,\"\",(M81/G81))","v":-9.7402597402597491E-2},null,{"$f":"'Rates Summary'!$F$40","v":8.2000000000000007E-3},{"$f":"$E$18","v":100},{"$f":"Q81*P81","v":0.82000000000000006},null,-0.56999999999999984,{"$f":"IF((K81)=0,\"\",(T81/K81))","v":-0.41007194244604306},null,{"$f":"'Rates Summary'!$G$40","v":4.1999999999999997E-3},{"$f":"$E$18","v":100},{"$f":"X81*W81","v":0.42},null,-0.40000000000000008,{"$f":"IF((R81)=0,\"\",(AA81/R81))","v":-0.48780487804878053},null,{"$f":"'Rates Summary'!$H$40","v":0},{"$f":"$E$18","v":100},{"$f":"AE81*AD81","v":0},null,-0.42,{"$f":"IF((Y81)=0,\"\",(AH81/Y81))","v":-1},null,{"$f":"'Rates Summary'!$I$40","v":0},{"$f":"$E$18","v":100},{"$f":"AL81*AK81","v":0},null,0,{"$f":"IF((AF81)=0,\"\",(AO81/AF81))","v":""}]
["\"Regular\" Distribution Only",null,null,null,null,null,{"$f":"SUM(G80:G81)","v":14.100000000000001},null,null,null,{"$f":"SUM(K80:K81)","v":15.370000000000001},null,1.2699999999999996,9.0070921985815566E-2,null,null,null,{"$f":"SUM(R80:R81)","v":19.36},null,3.9899999999999984,0.25959661678594653,null,null,null,{"$f":"SUM(Y80:Y81)","v":22.3},null,2.9400000000000013,0.15185950413223148,null,null,null,{"$f":"SUM(AF80:AF81)","v":25.35},null,3.0500000000000007,0.13677130044843053,null,null,null,{"$f":"SUM(AM80:AM81)","v":25.96},null,0.60999999999999943,2.4063116370808654E-2]
[]
[null,"Residential (kWh) - 100, 250, 500, 800, 1000, 1500, 2000"]
[null,"GS<50kW (kWh) - 1000, 2000, 5000, 10000, 15000"]
[null,"GS>50kW (kW) - 60, 100, 500, 1000"]
[null,"Large User - range appropriate for utility"]
[null,"Lighting Classes and USL - 150 kWh and 1 kW, range appropriate for utility."]
[]
[null,null,"Note that cells with the highlighted color shown to the left indicate quantities that are loss adjusted."]

{"sheet":"Bill Impact Resi 250kWh","index":4,"n_rows":90,"n_cols":42,"rows_kept":90,"cut":false,"hidden":false,"merged":[[19,33,19,34],[2,0,2,9],[9,0,9,13],[10,0,10,13],[13,2,13,13],[19,4,19,6],[19,8,19,10],[19,12,19,13],[70,0,70,2],[19,36,19,38],[19,40,19,41],[20,2,21,2],[20,12,21,12],[20,13,21,13],[20,19,21,19],[20,20,21,20],[20,26,21,26],[20,27,21,27],[20,33,21,33],[19,15,19,17],[19,19,19,20],[19,22,19,24],[19,26,19,27],[19,29,19,31],[20,34,21,34],[20,40,21,40],[20,41,21,41],[64,0,64,2],[65,0,65,2],[76,36,76,38],[76,40,76,41],[71,0,71,2],[76,4,76,6],[76,8,76,10],[76,12,76,13],[76,15,76,17],[76,19,76,20],[76,22,76,24],[76,26,76,27],[76,29,76,31],[76,33,76,34],[77,27,78,27],[77,33,78,33],[77,34,78,34],[77,40,78,40],[77,41,78,41],[77,26,78,26],[77,2,78,2],[77,12,78,12],[77,13,78,13],[77,19,78,19],[77,20,78,20]]}
[null,null,null,null,null,null,null,null,null,null,null,null,"File Number:",{"$f":"EBNUMBER","v":"EB-2015-0083"},null,null,null,null,1]
[null,null,null,null,null,null,null,null,null,null,null,null,"Exhibit:",8]
[null,null,null,null,null,null,null,null,null,null,null,null,"Tab:",4]
[null,null,null,null,null,null,null,null,null,null,null,null,"Schedule:",3]
[null,null,null,null,null,null,null,null,null,null,null,null,"Page:"]
[]
[null,null,null,null,null,null,null,null,null,null,null,null,null,"Settlement"]
[null,null,null,null,null,null,null,null,null,null,null,null,"Date:","2015-10-20"]
[]
["Appendix 2-W"]
["Bill Impacts"]
[]
[]
["Customer Class:",null,"Residential",null,null,null,null,null,null,null,null,null,null,null,null,{"$f":"C14","v":"Residential"},null,null,null,null,null,null,null,null,null,null,null,null,null,null,null,null,null,null,null,null,{"$f":"P14","v":"Residential"}]
[]
["TOU / non-TOU:",null,"TOU"]
[]
[null,null,"Consumption",null,250," kWh"]
[]
[null,null,null,null,"2015 Current Board-Approved",null,null,null,"2016 Test Year 1\nProposed",null,null,null,"Impact\n2016 TEST vs. \n2015 Bridge",null,null,"2017 Test Year 2\nProposed",null,null,null,"Impact\n2017 TEST 2 vs. \n2016 Test 1",null,null,"2018 Test Year 3\nProposed",null,null,null,"Impact\n2018 TEST 3 vs. \n2017 Test 2",null,null,"2019 Test Year 4\nProposed",null,null,null,"Impact\n2019 TEST 4 vs. \n2018 Test 3",null,null,"2020 Test Year 5 \nProposed",null,null,null,"Impact\n2020 TEST 5 vs. \n2019 Test 4"]
[null,null,"Charge Unit",null,"Rate","Volume","Charge",null,"Rate","Volume","Charge",null,"$ Change","% Change",null,"Rate","Volume","Charge",null,"$ Change","% Change",null,"Rate","Volume","Charge",null,"$ Change","% Change",null,"Rate","Volume","Charge",null,"$ Change","% Change",null,"Rate","Volume","Charge",null,"$ Change","% Change"]
[null,null,null,null,"($)",null,"($)",null,"($)",null,"($)",null,null,null,null,"($)",null,"($)",null,null,null,null,"($)",null,"($)",null,null,null,null,"($)",null,"($)",null,null,null,null,"($)",null,"($)"]
["Monthly Service Charge",null,"Monthly",null,12.56,1,{"$f":"F23*E23","v":12.56},null,{"$f":"'Rates Summary'!$E$28","v":13.98},1,{"$f":"J23*I23","v":13.98},null,{"$f":"K23-G23","v":1.42},{"$f":"IF((G23)=0,\"\",(M23/G23))","v":0.11305732484076432},null,{"$f":"'Rates Summary'!$F$28","v":18.54},1,{"$f":"Q23*P23","v":18.54},null,{"$f":"R23-K23","v":4.5599999999999987},{"$f":"IF((K23)=0,\"\",(T23/K23))","v":0.32618025751072949},null,{"$f":"'Rates Summary'!$G$28","v":21.88},1,{"$f":"X23*W23","v":21.88},null,{"$f":"Y23-R23","v":3.34},{"$f":"IF((R23)=0,\"\",(AA23/R23))","v":0.18015102481121897},null,{"$f":"'Rates Summary'!$H$28","v":25.35},1,{"$f":"AE23*AD23","v":25.35},null,{"$f":"AF23-Y23","v":3.4700000000000024},{"$f":"IF((Y23)=0,\"\",(AH23/Y23))","v":0.15859232175502755},null,{"$f":"'Rates Summary'!$I$28","v":25.96},1,{"$f":"AL23*AK23","v":25.96},null,{"$f":"AM23-AF23","v":0.60999999999999943},{"$f":"IF((AF23)=0,\"\",(AO23/AF23))","v":2.4063116370808654E-2}]
["Smart Meter (SMIRR) Rate Rider",null,"Monthly",null,2.63,1,{"$f":"F24*E24","v":2.63},null,0,1,{"$f":"J24*I24","v":0},null,{"$f":"K24-G24","v":-2.63},{"$f":"IF((G24)=0,\"\",(M24/G24))","v":-1},null,0,1,{"$f":"Q24*P24","v":0},null,0,{"$f":"IF((K24)=0,\"\",(T24/K24))","v":""},null,0,1,{"$f":"X24*W24","v":0},null,0,{"$f":"IF((R24)=0,\"\",(AA24/R24))","v":""},null,0,1,{"$f":"AE24*AD24","v":0},null,0,{"$f":"IF((Y24)=0,\"\",(AH24/Y24))","v":""},null,0,1,{"$f":"AL24*AK24","v":0},null,0,{"$f":"IF((AF24)=0,\"\",(AO24/AF24))","v":""}]
["Rate Rider Smart Meters Capital (2016)",null,"Monthly",null,0,1,0,null,{"$f":"'Rates Summary'!C10","v":0.25},1,{"$f":"J25*I25","v":0.25},null,{"$f":"K25-G25","v":0.25},null,null,0,1,{"$f":"Q25*P25","v":0},null,-0.25,-1,null,0,1,{"$f":"X25*W25","v":0},null,0,"",null,0,1,{"$f":"AE25*AD25","v":0},null,0,"",null,0,1,{"$f":"AL25*AK25","v":0},null,0,""]
["Rate Rider Recovery of Stranded Meters",null,"Monthly",null,0,1,0,null,{"$f":"'Rates Summary'!$C11","v":3.69},1,3.69,null,3.69,null,null,0,1,0,null,-3.69,-1,null,0,1,0,null,0,"",null,0,1,0,null,0,"",null,0,1,0,null,0,""]
[null,null,null,null,null,1,0,null,null,1,0,null,0,{"$f":"IF((G27)=0,\"\",(M27/G27))","v":""},null,null,1,0,null,0,"",null,null,1,0,null,0,"",null,null,1,0,null,0,"",null,null,1,0,null,0,""]
[null,null,null,null,null,1,0,null,null,1,0,null,0,"",null,null,1,0,null,0,"",null,null,1,0,null,0,"",null,null,1,0,null,0,"",null,null,1,0,null,0,""]
["Distribution Volumetric Rate",null,"per kWh",null,1.54E-2,{"$f":"$E$18","v":250},{"$f":"F29*E29","v":3.85},null,{"$f":"'Rates Summary'!$E$40","v":1.3899999999999999E-2},{"$f":"$E$18","v":250},3.4749999999999996,null,-0.37500000000000044,-9.7402597402597518E-2,null,{"$f":"'Rates Summary'!$F$40","v":8.2000000000000007E-3},{"$f":"$E$18","v":250},2.0500000000000003,null,-1.4249999999999994,-0.410071942446043,null,{"$f":"'Rates Summary'!$G$40","v":4.1999999999999997E-3},{"$f":"$E$18","v":250},1.05,null,-1.0000000000000002,-0.48780487804878053,null,{"$f":"'Rates Summary'!$H$40","v":0},{"$f":"$E$18","v":250},0,null,-1.05,-1,null,{"$f":"'Rates Summary'!$I$40","v":0},{"$f":"$E$18","v":250},0,null,0,""]
["Rate Rider Tax Change (2015)",null,"per kWh",null,-1E-4,{"$f":"$E$18","v":250},{"$f":"F30*E30","v":-2.5000000000000001E-2},null,0,{"$f":"$E$18","v":250},0,null,2.5000000000000001E-2,{"$f":"IF((G30)=0,\"\",(M30/G30))","v":-1},null,0,{"$f":"$E$18","v":250},0,null,0,"",null,0,{"$f":"$E$18","v":250},0,null,0,"",null,0,{"$f":"$E$18","v":250},0,null,0,"",null,0,{"$f":"$E$18","v":250},0,null,0,""]
["LRAM VA (2016)",null,"per kWh",null,0,{"$f":"$E$18","v":250},0,null,{"$f":"'Rates Summary'!C7","v":2.9999999999999997E-4},250,7.4999999999999997E-2,null,7.4999999999999997E-2,null,null,0,250,0,null,-7.4999999999999997E-2,{"$f":"IF((K31)=0,\"\",(T31/K31))","v":-1},null,0,250,0,null,0,"",null,0,250,0,null,0,"",null,0,250,0,null,0,""]
["Rate Rider Incremental Capital 2012 True-Up (2016)",null,"per kWh",null,0,{"$f":"$E$18","v":250},0,null,{"$f":"'Rates Summary'!C9","v":4.0000000000000002E-4},250,0.1,null,0.1,null,null,0,250,0,null,-0.1,{"$f":"IF((K32)=0,\"\",(T32/K32))","v":-1},null,0,250,0,null,0,"",null,0,250,0,null,0,"",null,0,250,0,null,0,""]
[null,null,"per kWh",null,0,{"$f":"$E$19","v":0},0,null,null,{"$f":"$E$19","v":0},0,null,0,{"$f":"IF((G33)=0,\"\",(M33/G33))","v":""},null,null,{"$f":"$E$19","v":0},0,null,0,"",null,null,{"$f":"$E$19","v":0},0,null,0,"",null,null,{"$f":"$E$19","v":0},0,null,0,"",null,null,{"$f":"$E$19","v":0},0,null,0,""]
[null,null,null,null,0,250,0,null,null,250,0,null,0,"",null,null,250,0,null,0,"",null,null,250,0,null,0,"",null,null,250,0,null,0,"",null,null,250,0,null,0,""]
[null,null,null,null,null,250,0,null,null,250,0,null,0,"",null,null,250,0,null,0,"",null,null,250,0,null,0,"",null,null,250,0,null,0,"",null,null,250,0,null,0,""]
[null,null,null,null,null,250,0,null,null,250,0,null,0,"",null,null,250,0,null,0,"",null,null,250,0,null,0,"",null,null,250,0,null,0,"",null,null,250,0,null,0,""]
[null,null,null,null,null,250,0,null,null,250,0,null,0,"",null,null,250,0,null,0,"",null,null,250,0,null,0,"",null,null,250,0,null,0,"",null,null,250,0,null,0,""]
[null,null,null,null,null,250,0,null,null,250,0,null,0,"",null,null,250,0,null,0,"",null,null,250,0,null,0,"",null,null,250,0,null,0,"",null,null,250,0,null,0,""]
["Sub-Total A (excluding pass through)",null,null,null,null,null,{"$f":"SUM(G23:G38)","v":19.015000000000004},null,null,null,{"$f":"SUM(K23:K38)","v":21.570000000000004},null,{"$f":"K39-G39","v":2.5549999999999997},0.13436760452274515,null,null,null,{"$f":"SUM(R23:R38)","v":20.59},null,-0.98000000000000398,-4.5433472415391925E-2,null,null,null,{"$f":"SUM(Y23:Y38)","v":22.93},null,2.34,0.11364740165128703,null,null,null,{"$f":"SUM(AF23:AF38)","v":25.35},null,2.4200000000000017,0.10553859572612306,null,null,null,{"$f":"SUM(AM23:AM38)","v":25.96},null,0.60999999999999943,2.4063116370808654E-2]
["Deferral/Variance Account Disposition Rate Rider (2016)",null,"per kWh",null,0,{"$f":"$E$18","v":250},{"$f":"F40*E40","v":0},null,{"$f":"'Rates Summary'!C5","v":6.9999999999999999E-4},{"$f":"$E$18","v":250},{"$f":"J40*I40","v":0.17499999999999999},null,{"$f":"K40-G40","v":0.17499999999999999},{"$f":"IF((G40)=0,\"\",(M40/G40))","v":""},null,0,{"$f":"$E$18","v":250},{"$f":"Q40*P40","v":0},null,-0.17499999999999999,-1,null,0,{"$f":"$E$18","v":250},{"$f":"X40*W40","v":0},null,0,"",null,0,{"$f":"$E$18","v":250},{"$f":"AE40*AD40","v":0},null,0,"",null,0,{"$f":"$E$18","v":250},{"$f":"AL40*AK40","v":0},null,0,""]
[null,null,null,null,null,{"$f":"$E$18","v":250},{"$f":"F41*E41","v":0},null,{"$f":"E41","v":0},{"$f":"$E$18","v":250},{"$f":"J41*I41","v":0},null,{"$f":"K41-G41","v":0},{"$f":"IF((G41)=0,\"\",(M41/G41))","v":""},null,null,{"$f":"$E$18","v":250},{"$f":"Q41*P41","v":0},null,0,"",null,null,{"$f":"$E$18","v":250},{"$f":"X41*W41","v":0},null,0,"",null,null,{"$f":"$E$18","v":250},{"$f":"AE41*AD41","v":0},null,0,"",null,null,{"$f":"$E$18","v":250},{"$f":"AL41*AK41","v":0},null,0,""]
["Rate Rider CGAAP Account 1576 (2016)",null,"per kWh",null,0,250,0,null,{"$f":"'Rates Summary'!$C$8","v":-1.0800000000000001E-2},250,-2.7,null,-2.7,"",null,0,250,0,null,2.7,-1,null,{"$f":"P42","v":0},250,0,null,0,"",null,{"$f":"W42","v":0},250,0,null,0,"",null,{"$f":"AD42","v":0},250,0,null,0,""]
["Disposition of Global Adjustment (2015)  \nApplicable to Non-RPP Customers",null,"per kWh",null,1.5599999999999999E-2,0,0,null,0,250,0,null,0,"",null,0,250,0,null,0,"",null,0,250,0,null,0,"",null,0,250,0,null,0,"",null,0,250,0,null,0,""]
["Disposition of Global Adjustment (2016) \nApplicable to Non-RPP Customers",null,"per kWh",null,0,250,0,null,{"$f":"'Rates Summary'!C6","v":2.0500000000000001E-2},0,0,null,0,"",null,0,250,0,null,0,"",null,0,250,0,null,0,"",null,0,250,0,null,0,"",null,0,250,0,null,0,""]
["Low Voltage Service Charge",null,"per kWh",null,6.9999999999999999E-4,250,{"$f":"F45*E45","v":0.17499999999999999},null,{"$f":"'Rates Summary'!C15","v":1.1999999999999999E-3},250,{"$f":"J45*I45","v":0.3},null,{"$f":"K45-G45","v":0.125},{"$f":"IF((G45)=0,\"\",(M45/G45))","v":0.7142857142857143},null,{"$f":"I45","v":1.1999999999999999E-3},250,{"$f":"Q45*P45","v":0.3},null,{"$f":"R45-K45","v":0},0,null,{"$f":"P45","v":1.1999999999999999E-3},250,{"$f":"X45*W45","v":0.3},null,{"$f":"Y45-R45","v":0},0,null,{"$f":"W45","v":1.1999999999999999E-3},250,{"$f":"AE45*AD45","v":0.3},null,{"$f":"AF45-Y45","v":0},0,null,{"$f":"AD45","v":1.1999999999999999E-3},250,{"$f":"AL45*AK45","v":0.3},null,{"$f":"AM45-AF45","v":0},0]
["Line Losses on Cost of Power",null,"per kWh",null,{"$f":"IF(ISBLANK(C16)=TRUE, 0, IF(C16=\"TOU\", 0.64*$E$56+0.18*$E$57+0.18*$E$58, IF(AND(C16=\"non-TOU\", F60>0), E60,E59)))","v":0.10766000000000001},{"$f":"$E$18*(1+$E$75)-$E$18","v":8.6000000000000227},0.92587600000000247,null,{"$f":"E46","v":0.10766000000000001},{"$f":"$E$18*(1+$I$75)-$E$18","v":9.8249999999999886},1.0577594999999989,null,0.13188349999999638,0.14244186046511198,null,{"$f":"I46","v":0.10766000000000001},{"$f":"$E$18*(1+$I$75)-$E$18","v":9.8249999999999886},{"$f":"Q46*P46","v":1.0577594999999989},null,{"$f":"R46-K46","v":0},0,null,{"$f":"P46","v":0.10766000000000001},{"$f":"$E$18*(1+$I$75)-$E$18","v":9.8249999999999886},{"$f":"X46*W46","v":1.0577594999999989},null,{"$f":"Y46-R46","v":0},0,null,{"$f":"W46","v":0.10766000000000001},{"$f":"$E$18*(1+$I$75)-$E$18","v":9.8249999999999886},{"$f":"AE46*AD46","v":1.0577594999999989},null,{"$f":"AF46-Y46","v":0},0,null,{"$f":"AD46","v":0.10766000000000001},{"$f":"$E$18*(1+$I$75)-$E$18","v":9.8249999999999886},{"$f":"AL46*AK46","v":1.0577594999999989},null,{"$f":"AM46-AF46","v":0},0]
["Smart Meter Entity Charge",null,"Monthly",null,0.79,1,{"$f":"F47*E47","v":0.79},null,0.79,1,{"$f":"J47*I47","v":0.79},null,{"$f":"K47-G47","v":0},null,null,0.79,1,{"$f":"Q47*P47","v":0.79},null,{"$f":"R47-K47","v":0},0,null,0.79,1,{"$f":"X47*W47","v":0.79},null,{"$f":"Y47-R47","v":0},0,null,0,1,{"$f":"AE47*AD47","v":0},null,{"$f":"AF47-Y47","v":-0.79},-1,null,0,1,{"$f":"AL47*AK47","v":0},null,{"$f":"AM47-AF47","v":0},""]
["Sub-Total B - Distribution (includes Sub-Total A)",null,null,null,null,null,{"$f":"SUM(G40:G47)+G39","v":20.905876000000006},null,null,null,{"$f":"SUM(K40:K47)+K39","v":21.192759500000001},null,{"$f":"K48-G48","v":0.28688349999999474},{"$f":"IF((G48)=0,\"\",(M48/G48))","v":1.3722625160504858E-2},null,null,null,{"$f":"SUM(R40:R47)+R39","v":22.737759499999999},null,{"$f":"R48-K48","v":1.5449999999999982},7.2902257018487751E-2,null,null,null,{"$f":"SUM(Y40:Y47)+Y39","v":25.077759499999999},null,{"$f":"Y48-R48","v":2.34},0.10291251431347051,null,null,null,{"$f":"SUM(AF40:AF47)+AF39","v":26.707759500000002},null,{"$f":"AF48-Y48","v":1.6300000000000026},6.4997832043169668E-2,null,null,null,{"$f":"SUM(AM40:AM47)+AM39","v":27.317759500000001},null,{"$f":"AM48-AF48","v":0.60999999999999943},2.2839804289835671E-2]
["RTSR - Network",null,"per kWh",null,6.7000000000000002E-3,{"$f":"$E$18*(1+$E$75)","v":258.60000000000002},{"$f":"F49*E49","v":1.7326200000000003},null,{"$f":"'Rates Summary'!C17","v":7.1000000000000004E-3},{"$f":"$E$18*(1+$I$75)","v":259.82499999999999},{"$f":"J49*I49","v":1.8447575000000001},null,0.11213749999999978,6.4721346861977683E-2,null,{"$f":"I49","v":7.1000000000000004E-3},{"$f":"$E$18*(1+P75)","v":259.82499999999999},{"$f":"Q49*P49","v":1.8447575000000001},null,0,0,null,{"$f":"P49","v":7.1000000000000004E-3},{"$f":"$E$18*(1+W75)","v":259.82499999999999},{"$f":"X49*W49","v":1.8447575000000001},null,0,0,null,{"$f":"W49","v":7.1000000000000004E-3},{"$f":"$E$18*(1+AD75)","v":259.82499999999999},{"$f":"AE49*AD49","v":1.8447575000000001},null,0,0,null,{"$f":"AD49","v":7.1000000000000004E-3},{"$f":"$E$18*(1+AK75)","v":259.82499999999999},{"$f":"AL49*AK49","v":1.8447575000000001},null,0,0]
["RTSR - Line and Transformation Connection",null,"per kWh",null,5.1000000000000004E-3,{"$f":"F49","v":258.60000000000002},{"$f":"F50*E50","v":1.3188600000000001},null,{"$f":"'Rates Summary'!C18","v":5.5999999999999999E-3},{"$f":"J49","v":259.82499999999999},{"$f":"J50*I50","v":1.45502},null,0.13615999999999984,0.10324067755485784,null,{"$f":"I50","v":5.5999999999999999E-3},{"$f":"Q49","v":259.82499999999999},{"$f":"Q50*P50","v":1.45502},null,0,0,null,{"$f":"P50","v":5.5999999999999999E-3},{"$f":"X49","v":259.82499999999999},{"$f":"X50*W50","v":1.45502},null,0,0,null,{"$f":"W50","v":5.5999999999999999E-3},{"$f":"AE49","v":259.82499999999999},{"$f":"AE50*AD50","v":1.45502},null,0,0,null,{"$f":"AD50","v":5.5999999999999999E-3},{"$f":"AL49","v":259.82499999999999},{"$f":"AL50*AK50","v":1.45502},null,0,0]
["Sub-Total C - Delivery (including Sub-Total B)",null,null,null,null,null,{"$f":"SUM(G48:G50)","v":23.957356000000008},null,null,null,{"$f":"SUM(K48:K50)","v":24.492537000000002},null,0.53518099999999436,2.2338900836970248E-2,null,null,null,{"$f":"SUM(R48:R50)","v":26.037537},null,1.5449999999999982,6.3080439564100602E-2,null,null,null,{"$f":"SUM(Y48:Y50)","v":28.377537},null,2.34,8.9870251552594996E-2,null,null,null,{"$f":"SUM(AF48:AF50)","v":30.007537000000003},null,1.6300000000000026,5.7439798246056467E-2,null,null,null,{"$f":"SUM(AM48:AM50)","v":30.617537000000002},null,0.60999999999999943,2.0328226205303002E-2]
["Wholesale Market Service Charge (WMSC)",null,"per kWh",null,4.4000000000000003E-3,{"$f":"F50","v":258.60000000000002},{"$f":"F52*E52","v":1.1378400000000002},null,{"$f":"'Rates Summary'!C19","v":4.4000000000000003E-3},{"$f":"J50","v":259.82499999999999},{"$f":"J52*I52","v":1.14323},null,5.3899999999997839E-3,4.7370456303169016E-3,null,{"$f":"I52","v":4.4000000000000003E-3},{"$f":"Q50","v":259.82499999999999},{"$f":"Q52*P52","v":1.14323},null,0,0,null,{"$f":"P52","v":4.4000000000000003E-3},{"$f":"X50","v":259.82499999999999},{"$f":"X52*W52","v":1.14323},null,0,0,null,{"$f":"W52","v":4.4000000000000003E-3},{"$f":"AE50","v":259.82499999999999},{"$f":"AE52*AD52","v":1.14323},null,0,0,null,{"$f":"AD52","v":4.4000000000000003E-3},{"$f":"AL50","v":259.82499999999999},{"$f":"AL52*AK52","v":1.14323},null,0,0]
["Rural and Remote Rate Protection (RRRP)",null,"per kWh",null,1.2999999999999999E-3,{"$f":"F50","v":258.60000000000002},0.33618000000000003,null,{"$f":"'Rates Summary'!C20","v":1.2999999999999999E-3},{"$f":"J50","v":259.82499999999999},0.33777249999999998,null,1.5924999999999412E-3,4.7370456303169163E-3,null,{"$f":"I53","v":1.2999999999999999E-3},{"$f":"Q50","v":259.82499999999999},0.33777249999999998,null,0,0,null,{"$f":"P53","v":1.2999999999999999E-3},{"$f":"X50","v":259.82499999999999},0.33777249999999998,null,0,0,null,{"$f":"W53","v":1.2999999999999999E-3},{"$f":"AE50","v":259.82499999999999},0.33777249999999998,null,0,0,null,{"$f":"AD53","v":1.2999999999999999E-3},{"$f":"AL50","v":259.82499999999999},0.33777249999999998,null,0,0]
["Standard Supply Service Charge",null,"Monthly",null,0.25,1,0.25,null,{"$f":"'Rates Summary'!C21","v":0.25},1,0.25,null,0,0,null,{"$f":"I54","v":0.25},1,0.25,null,0,0,null,{"$f":"P54","v":0.25},1,0.25,null,0,0,null,{"$f":"W54","v":0.25},1,0.25,null,0,0,null,{"$f":"AD54","v":0.25},1,0.25,null,0,0]
["Debt Retirement Charge (DRC)",null,"per kWh",null,7.0000000000000001E-3,{"$f":"E18","v":250},1.75,null,0,{"$f":"E18","v":250},0,null,-1.75,-1,null,0,{"$f":"J55","v":250},0,null,0,"",null,0,{"$f":"Q55","v":250},0,null,0,"",null,0,{"$f":"X55","v":250},0,null,0,"",null,0,{"$f":"AE55","v":250},0,null,0,""]
["TOU - Off Peak",null,"per kWh",null,8.3000000000000004E-2,{"$f":"0.64*$E$18","v":160},13.280000000000001,null,{"$f":"E56","v":8.3000000000000004E-2},{"$f":"F56","v":160},13.280000000000001,null,0,0,null,{"$f":"I56","v":8.3000000000000004E-2},{"$f":"J56","v":160},13.280000000000001,null,0,0,null,{"$f":"P56","v":8.3000000000000004E-2},{"$f":"Q56","v":160},13.280000000000001,null,0,0,null,{"$f":"W56","v":8.3000000000000004E-2},{"$f":"X56","v":160},13.280000000000001,null,0,0,null,{"$f":"AD56","v":8.3000000000000004E-2},{"$f":"AE56","v":160},13.280000000000001,null,0,0]
["TOU - Mid Peak",null,"per kWh",null,0.128,{"$f":"0.18*$E$18","v":45},5.76,null,{"$f":"E57","v":0.128},{"$f":"F57","v":45},5.76,null,0,0,null,{"$f":"I57","v":0.128},45,5.76,null,0,0,null,{"$f":"P57","v":0.128},45,5.76,null,0,0,null,{"$f":"W57","v":0.128},45,5.76,null,0,0,null,{"$f":"AD57","v":0.128},45,5.76,null,0,0]
["TOU - On Peak",null,"per kWh",null,0.17499999999999999,{"$f":"0.18*$E$18","v":45},7.8749999999999991,null,0.17499999999999999,{"$f":"F58","v":45},7.8749999999999991,null,0,0,null,0.17499999999999999,45,7.8749999999999991,null,0,0,null,0.17499999999999999,45,7.8749999999999991,null,0,0,null,0.17499999999999999,45,7.8749999999999991,null,0,0,null,0.17499999999999999,45,7.8749999999999991,null,0,0]
["Energy - RPP - Tier 1",null,"per kWh",null,9.9000000000000005E-2,{"$f":"IF(AND($S$1=1, E18>=600), 600, IF(AND($S$1=1, AND(E18<600, E18>=0)), E18, IF(AND($S$1=2, E18>=1000), 1000, IF(AND($S$1=2, AND(E18<1000, E18>=0)), E18))))","v":250},{"$f":"F59*E59","v":24.75},null,9.9000000000000005E-2,{"$f":"F59","v":250},{"$f":"J59*I59","v":24.75},null,0,0,null,9.9000000000000005E-2,250,{"$f":"Q59*P59","v":24.75},null,0,0,null,9.9000000000000005E-2,250,{"$f":"X59*W59","v":24.75},null,0,0,null,9.9000000000000005E-2,250,{"$f":"AE59*AD59","v":24.75},null,0,0,null,9.9000000000000005E-2,250,{"$f":"AL59*AK59","v":24.75},null,0,0]
["Energy - RPP - Tier 2",null,"per kWh",null,0.11600000000000001,{"$f":"IF(AND($S$1=1, E18>=600), E18-600, IF(AND($S$1=1, AND(E18<600, E18>=0)), 0, IF(AND($S$1=2, E18>=1000), E18-1000, IF(AND($S$1=2, AND(E18<1000, E18>=0)), 0))))","v":0},{"$f":"F60*E60","v":0},null,0.11600000000000001,{"$f":"F60","v":0},{"$f":"J60*I60","v":0},null,0,"",null,0.11600000000000001,0,{"$f":"Q60*P60","v":0},null,0,"",null,0.11600000000000001,0,{"$f":"X60*W60","v":0},null,0,"",null,0.11600000000000001,0,{"$f":"AE60*AD60","v":0},null,0,"",null,0.11600000000000001,0,{"$f":"AL60*AK60","v":0},null,0,""]
[null,null,null,null,null,null,null,null,null,null,null,null,null,null,null,null,null,null,null,null,"",null,null,null,null,null,null,"",null,null,null,null,null,null,"",null,null,null,null,null,null,""]
["Total Bill on TOU (before Taxes)",null,null,null,null,null,{"$f":"SUM(G52:G58,G51)","v":54.346376000000006},null,null,null,{"$f":"SUM(K52:K58,K51)","v":53.138539500000007},null,{"$f":"K62-G62","v":-1.2078364999999991},{"$f":"IF((G62)=0,\"\",(M62/G62))","v":-2.2224784592812571E-2},null,null,null,{"$f":"SUM(R52:R58,R51)","v":54.683539500000002},null,{"$f":"R62-K62","v":1.5449999999999946},2.9074942867031457E-2,null,null,null,{"$f":"SUM(Y52:Y58,Y51)","v":57.023539499999998},null,{"$f":"Y62-R62","v":2.3399999999999963},4.2791670425795979E-2,null,null,null,{"$f":"SUM(AF52:AF58,AF51)","v":58.653539500000008},null,{"$f":"AF62-Y62","v":1.6300000000000097},2.8584686504772468E-2,null,null,null,{"$f":"SUM(AM52:AM58,AM51)","v":59.263539500000007},null,{"$f":"AM62-AF62","v":0.60999999999999943},1.0400054373530166E-2]
["HST",null,null,null,0.13,null,{"$f":"G62*E63","v":7.0650288800000007},null,0.13,null,{"$f":"K62*I63","v":6.9080101350000014},null,-0.15701874499999935,-2.2224784592812498E-2,null,0.13,null,{"$f":"R62*P63","v":7.1088601350000005},null,{"$f":"R63-K63","v":0.20084999999999908},2.9074942867031425E-2,null,0.13,null,{"$f":"Y62*W63","v":7.4130601350000003},null,{"$f":"Y63-R63","v":0.3041999999999998},4.279167042579602E-2,null,0.13,null,{"$f":"AF62*AD63","v":7.6249601350000011},null,{"$f":"AF63-Y63","v":0.21190000000000087},2.8584686504772413E-2,null,0.13,null,{"$f":"AM62*AK63","v":7.7042601350000011},null,{"$f":"AM63-AF63","v":7.9299999999999926E-2},1.0400054373530166E-2]
["Total Bill (including HST)",null,null,null,null,null,{"$f":"G62+G63","v":61.411404880000006},null,null,null,{"$f":"K62+K63","v":60.046549635000005},null,-1.3648552450000011,-2.2224784592812609E-2,null,null,null,{"$f":"R62+R63","v":61.792399635000002},null,1.7458499999999972,2.9074942867031515E-2,null,null,null,{"$f":"Y62+Y63","v":64.436599634999993},null,2.6441999999999908,4.2791670425795895E-2,null,null,null,{"$f":"AF62+AF63","v":66.278499635000003},null,1.8419000000000096,2.8584686504772451E-2,null,null,null,{"$f":"AM62+AM63","v":66.967799635000006},null,0.68930000000000291,1.0400054373530221E-2]
["Ontario Clean Energy Benefit 1",null,null,null,null,null,{"$f":"ROUND(-G64*10%,2)","v":-6.14},null,null,null,0,null,6.14,-1,null,null,null,0,null,0,"",null,null,null,0,null,0,"",null,null,null,0,null,0,"",null,null,null,0,null,0,""]
["Total Bill on TOU (including OCEB)",null,null,null,null,null,{"$f":"G64+G65","v":55.271404880000006},null,null,null,{"$f":"K64+K65","v":60.046549635000005},null,4.7751447549999995,8.6394488531046712E-2,null,null,null,{"$f":"R64+R65","v":61.792399635000002},null,1.7458499999999972,2.9074942867031515E-2,null,null,null,{"$f":"Y64+Y65","v":64.436599634999993},null,2.6441999999999908,4.2791670425795895E-2,null,null,null,{"$f":"AF64+AF65","v":66.278499635000003},null,1.8419000000000096,2.8584686504772451E-2,null,null,null,{"$f":"AM64+AM65","v":66.967799635000006},null,0.68930000000000291,1.0400054373530221E-2]
[null,null,null,null,null,null,null,null,null,null,null,null,null,null,null,null,null,null,null,null,"",null,null,null,null,null,null,"",null,null,null,null,null,null,"",null,null,null,null,null,null,""]
["Total Bill on RPP (before Taxes)",null,null,null,null,null,{"$f":"SUM(G59:G60,G52:G55,G51)","v":52.181376000000007},null,null,null,{"$f":"SUM(K59:K60,K52:K55,K51)","v":50.973539500000001},null,{"$f":"K68-G68","v":-1.2078365000000062},{"$f":"IF((G68)=0,\"\",(M68/G68))","v":-2.3146888652380612E-2},null,null,null,{"$f":"SUM(R59:R60,R52:R55,R51)","v":52.518539500000003},null,{"$f":"R68-K68","v":1.5450000000000017},3.030984340414504E-2,null,null,null,{"$f":"SUM(Y59:Y60,Y52:Y55,Y51)","v":54.858539499999999},null,{"$f":"Y68-R68","v":2.3399999999999963},4.4555694470521143E-2,null,null,null,{"$f":"SUM(AF59:AF60,AF52:AF55,AF51)","v":56.488539500000002},null,{"$f":"AF68-Y68","v":1.6300000000000026},2.9712785189988562E-2,null,null,null,{"$f":"SUM(AM59:AM60,AM52:AM55,AM51)","v":57.098539500000001},null,{"$f":"AM68-AF68","v":0.60999999999999943},1.0798650582920443E-2]
["HST",null,null,null,0.13,null,{"$f":"G68*E69","v":6.7835788800000012},null,0.13,null,{"$f":"K68*I69","v":6.6265601350000001},null,-0.15701874500000113,{"$f":"IF((G69)=0,\"\",(M69/G69))","v":-2.3146888652380657E-2},null,0.13,null,{"$f":"R68*P69","v":6.8274101350000009},null,{"$f":"R69-K69","v":0.20085000000000086},3.0309843404145137E-2,null,0.13,null,{"$f":"Y68*W69","v":7.1316101349999999},null,{"$f":"Y69-R69","v":0.30419999999999892},4.4555694470521053E-2,null,0.13,null,{"$f":"AF68*AD69","v":7.3435101350000007},null,{"$f":"AF69-Y69","v":0.21190000000000087},2.9712785189988638E-2,null,0.13,null,{"$f":"AM68*AK69","v":7.4228101350000006},null,{"$f":"AM69-AF69","v":7.9299999999999926E-2},1.0798650582920441E-2]
["Total Bill (including HST)",null,null,null,null,null,{"$f":"G68+G69","v":58.964954880000008},null,null,null,{"$f":"K68+K69","v":57.600099634999999},null,-1.3648552450000082,-2.3146888652380633E-2,null,null,null,{"$f":"R68+R69","v":59.345949635000004},null,1.7458500000000043,3.0309843404145081E-2,null,null,null,{"$f":"Y68+Y69","v":61.990149635000002},null,2.6441999999999979,4.4555694470521177E-2,null,null,null,{"$f":"AF68+AF69","v":63.832049635000004},null,1.8419000000000025,2.9712785189988555E-2,null,null,null,{"$f":"AM68+AM69","v":64.521349635000007},null,0.68930000000000291,1.0798650582920497E-2]
["Ontario Clean Energy Benefit 1",null,null,null,null,null,{"$f":"ROUND(-G70*10%,2)","v":-5.9},null,null,null,0,null,5.9,-1,null,null,null,0,null,0,"",null,null,null,0,null,0,"",null,null,null,0,null,0,"",null,null,null,0,null,0,""]
["Total Bill on RPP (including OCEB)",null,null,null,null,null,{"$f":"SUM(G70:G71)","v":53.064954880000009},null,null,null,{"$f":"SUM(K70:K71)","v":57.600099634999999},null,4.5351447549999904,8.5464027346403529E-2,null,null,null,{"$f":"SUM(R70:R71)","v":59.345949635000004},null,1.7458500000000043,3.0309843404145081E-2,null,null,null,{"$f":"SUM(Y70:Y71)","v":61.990149635000002},null,2.6441999999999979,4.4555694470521177E-2,null,null,null,{"$f":"SUM(AF70:AF71)","v":63.832049635000004},null,1.8419000000000025,2.9712785189988555E-2,null,null,null,{"$f":"SUM(AM70:AM71)","v":64.521349635000007},null,0.68930000000000291,1.0798650582920497E-2]
[null,null,null,null,null,null,null,null,null,null,null,null,null,null,null,null,null,null,null,null,null,null,null,null,null,null,null,"",null,null,null,null,null,null,"",null,null,null,null,null,null,""]
[]
["Loss Factor (%)",null,null,null,3.44E-2,null,null,null,3.9300000000000002E-2,null,null,null,null,null,null,3.9300000000000002E-2,null,null,null,null,null,null,3.9300000000000002E-2,null,null,null,null,null,null,3.9300000000000002E-2,null,null,null,null,null,null,3.9300000000000002E-2]
[]
["Distribution Excluding Rate Riders",null,null,null,"2015 Current Board-Approved",null,null,null,"2016 Test Year 1\nProposed",null,null,null,"Impact\n2016 TEST vs. \n2015 Bridge",null,null,"2017 Test Year 2\nProposed",null,null,null,"Impact\n2017 TEST 2 vs. \n2016 Test 1",null,null,"2018 Test Year 3\nProposed",null,null,null,"Impact\n2018 TEST 3 vs. \n2017 Test 2",null,null,"2019 Test Year 4\nProposed",null,null,null,"Impact\n2019 TEST 4 vs. \n2018 Test 3",null,null,"2020 Test Year 5 \nProposed",null,null,null,"Impact\n2020 TEST 5 vs. \n2019 Test 4"]
[null,null,"Charge Unit",null,"Rate","Volume","Charge",null,"Rate","Volume","Charge",null,"$ Change","% Change",null,"Rate","Volume","Charge",null,"$ Change","% Change",null,"Rate","Volume","Charge",null,"$ Change","% Change",null,"Rate","Volume","Charge",null,"$ Change","% Change",null,"Rate","Volume","Charge",null,"$ Change","% Change"]
[null,null,null,null,"($)",null,"($)",null,"($)",null,"($)",null,null,null,null,"($)",null,"($)",null,null,null,null,"($)",null,"($)",null,null,null,null,"($)",null,"($)",null,null,null,null,"($)",null,"($)"]
["Monthly Service Charge",null,"Monthly",null,12.56,1,{"$f":"F80*E80","v":12.56},null,{"$f":"'Rates Summary'!$E$28","v":13.98},1,{"$f":"J80*I80","v":13.98},null,{"$f":"K80-G80","v":1.42},{"$f":"IF((G80)=0,\"\",(M80/G80))","v":0.11305732484076432},null,{"$f":"'Rates Summary'!$F$28","v":18.54},1,{"$f":"Q80*P80","v":18.54},null,{"$f":"R80-K80","v":4.5599999999999987},{"$f":"IF((K80)=0,\"\",(T80/K80))","v":0.32618025751072949},null,{"$f":"'Rates Summary'!$G$28","v":21.88},1,{"$f":"X80*W80","v":21.88},null,{"$f":"Y80-R80","v":3.34},{"$f":"IF((R80)=0,\"\",(AA80/R80))","v":0.18015102481121897},null,{"$f":"'Rates Summary'!$H$28","v":25.35},1,{"$f":"AE80*AD80","v":25.35},null,{"$f":"AF80-Y80","v":3.4700000000000024},{"$f":"IF((Y80)=0,\"\",(AH80/Y80))","v":0.15859232175502755},null,{"$f":"'Rates Summary'!$I$28","v":25.96},1,{"$f":"AL80*AK80","v":25.96},null,{"$f":"AM80-AF80","v":0.60999999999999943},{"$f":"IF((AF80)=0,\"\",(AO80/AF80))","v":2.4063116370808654E-2}]
["Distribution Volumetric Rate",null,"per kWh",null,1.54E-2,{"$f":"$E$18","v":250},{"$f":"F81*E81","v":3.85},null,{"$f":"'Rates Summary'!$E$40","v":1.3899999999999999E-2},{"$f":"$E$18","v":250},{"$f":"J81*I81","v":3.4749999999999996},null,{"$f":"K81-G81","v":-0.37500000000000044},{"$f":"IF((G81)=0,\"\",(M81/G81))","v":-9.7402597402597518E-2},null,{"$f":"'Rates Summary'!$F$40","v":8.2000000000000007E-3},{"$f":"$E$18","v":250},{"$f":"Q81*P81","v":2.0500000000000003},null,-1.4249999999999994,{"$f":"IF((K81)=0,\"\",(T81/K81))","v":-0.410071942446043},null,{"$f":"'Rates Summary'!$G$40","v":4.1999999999999997E-3},{"$f":"$E$18","v":250},{"$f":"X81*W81","v":1.05},null,-1.0000000000000002,{"$f":"IF((R81)=0,\"\",(AA81/R81))","v":-0.48780487804878053},null,{"$f":"'Rates Summary'!$H$40","v":0},{"$f":"$E$18","v":250},{"$f":"AE81*AD81","v":0},null,-1.05,{"$f":"IF((Y81)=0,\"\",(AH81/Y81))","v":-1},null,{"$f":"'Rates Summary'!$I$40","v":0},{"$f":"$E$18","v":250},{"$f":"AL81*AK81","v":0},null,0,{"$f":"IF((AF81)=0,\"\",(AO81/AF81))","v":""}]
["\"Regular\" Distribution Only",null,null,null,null,null,{"$f":"SUM(G80:G81)","v":16.41},null,null,null,{"$f":"SUM(K80:K81)","v":17.454999999999998},null,1.0449999999999982,6.3680682510664111E-2,null,null,null,{"$f":"SUM(R80:R81)","v":20.59},null,3.1350000000000016,0.17960469779432839,null,null,null,{"$f":"SUM(Y80:Y81)","v":22.93},null,2.34,0.11364740165128703,null,null,null,{"$f":"SUM(AF80:AF81)","v":25.35},null,2.4200000000000017,0.10553859572612306,null,null,null,{"$f":"SUM(AM80:AM81)","v":25.96},null,0.60999999999999943,2.4063116370808654E-2]
[]
[null,"Residential (kWh) - 100, 250, 500, 800, 1000, 1500, 2000"]
[null,"GS<50kW (kWh) - 1000, 2000, 5000, 10000, 15000"]
[null,"GS>50kW (kW) - 60, 100, 500, 1000"]
[null,"Large User - range appropriate for utility"]
[null,"Lighting Classes and USL - 150 kWh and 1 kW, range appropriate for utility."]
[]
[null,null,"Note that cells with the highlighted color shown to the left indicate quantities that are loss adjusted."]

{"sheet":"Bill Impact Resi 500kWh","index":5,"n_rows":90,"n_cols":42,"rows_kept":90,"cut":false,"hidden":false,"merged":[[19,33,19,34],[2,0,2,9],[9,0,9,13],[10,0,10,13],[13,2,13,13],[19,4,19,6],[19,8,19,10],[19,12,19,13],[70,0,70,2],[19,36,19,38],[19,40,19,41],[20,2,21,2],[20,12,21,12],[20,13,21,13],[20,19,21,19],[20,20,21,20],[20,26,21,26],[20,27,21,27],[20,33,21,33],[19,15,19,17],[19,19,19,20],[19,22,19,24],[19,26,19,27],[19,29,19,31],[20,34,21,34],[20,40,21,40],[20,41,21,41],[64,0,64,2],[65,0,65,2],[76,36,76,38],[76,40,76,41],[71,0,71,2],[76,4,76,6],[76,8,76,10],[76,12,76,13],[76,15,76,17],[76,19,76,20],[76,22,76,24],[76,26,76,27],[76,29,76,31],[76,33,76,34],[77,27,78,27],[77,33,78,33],[77,34,78,34],[77,40,78,40],[77,41,78,41],[77,26,78,26],[77,2,78,2],[77,12,78,12],[77,13,78,13],[77,19,78,19],[77,20,78,20]]}
[null,null,null,null,null,null,null,null,null,null,null,null,"File Number:",{"$f":"EBNUMBER","v":"EB-2015-0083"},null,null,null,null,1]
[null,null,null,null,null,null,null,null,null,null,null,null,"Exhibit:",8]
[null,null,null,null,null,null,null,null,null,null,null,null,"Tab:",4]
[null,null,null,null,null,null,null,null,null,null,null,null,"Schedule:",3]
[null,null,null,null,null,null,null,null,null,null,null,null,"Page:"]
[]
[null,null,null,null,null,null,null,null,null,null,null,null,null,"Settlement"]
[null,null,null,null,null,null,null,null,null,null,null,null,"Date:","2015-10-20"]
[]
["Appendix 2-W"]
["Bill Impacts"]
[]
[]
["Customer Class:",null,"Residential",null,null,null,null,null,null,null,null,null,null,null,null,{"$f":"C14","v":"Residential"},null,null,null,null,null,null,null,null,null,null,null,null,null,null,null,null,null,null,null,null,{"$f":"P14","v":"Residential"}]
[]
["TOU / non-TOU:",null,"TOU"]
[]
[null,null,"Consumption",null,500," kWh"]
[]
[null,null,null,null,"2015 Current Board-Approved",null,null,null,"2016 Test Year 1\nProposed",null,null,null,"Impact\n2016 TEST vs. \n2015 Bridge",null,null,"2017 Test Year 2\nProposed",null,null,null,"Impact\n2017 TEST 2 vs. \n2016 Test 1",null,null,"2018 Test Year 3\nProposed",null,null,null,"Impact\n2018 TEST 3 vs. \n2017 Test 2",null,null,"2019 Test Year 4\nProposed",null,null,null,"Impact\n2019 TEST 4 vs. \n2018 Test 3",null,null,"2020 Test Year 5 \nProposed",null,null,null,"Impact\n2020 TEST 5 vs. \n2019 Test 4"]
[null,null,"Charge Unit",null,"Rate","Volume","Charge",null,"Rate","Volume","Charge",null,"$ Change","% Change",null,"Rate","Volume","Charge",null,"$ Change","% Change",null,"Rate","Volume","Charge",null,"$ Change","% Change",null,"Rate","Volume","Charge",null,"$ Change","% Change",null,"Rate","Volume","Charge",null,"$ Change","% Change"]
[null,null,null,null,"($)",null,"($)",null,"($)",null,"($)",null,null,null,null,"($)",null,"($)",null,null,null,null,"($)",null,"($)",null,null,null,null,"($)",null,"($)",null,null,null,null,"($)",null,"($)"]
["Monthly Service Charge",null,"Monthly",null,12.56,1,{"$f":"F23*E23","v":12.56},null,{"$f":"'Rates Summary'!$E$28","v":13.98},1,{"$f":"J23*I23","v":13.98},null,{"$f":"K23-G23","v":1.42},{"$f":"IF((G23)=0,\"\",(M23/G23))","v":0.11305732484076432},null,{"$f":"'Rates Summary'!$F$28","v":18.54},1,{"$f":"Q23*P23","v":18.54},null,{"$f":"R23-K23","v":4.5599999999999987},{"$f":"IF((K23)=0,\"\",(T23/K23))","v":0.32618025751072949},null,{"$f":"'Rates Summary'!$G$28","v":21.88},1,{"$f":"X23*W23","v":21.88},null,{"$f":"Y23-R23","v":3.34},{"$f":"IF((R23)=0,\"\",(AA23/R23))","v":0.18015102481121897},null,{"$f":"'Rates Summary'!$H$28","v":25.35},1,{"$f":"AE23*AD23","v":25.35},null,{"$f":"AF23-Y23","v":3.4700000000000024},{"$f":"IF((Y23)=0,\"\",(AH23/Y23))","v":0.15859232175502755},null,{"$f":"'Rates Summary'!$I$28","v":25.96},1,{"$f":"AL23*AK23","v":25.96},null,{"$f":"AM23-AF23","v":0.60999999999999943},{"$f":"IF((AF23)=0,\"\",(AO23/AF23))","v":2.4063116370808654E-2}]
["Smart Meter (SMIRR) Rate Rider",null,"Monthly",null,2.63,1,{"$f":"F24*E24","v":2.63},null,0,1,{"$f":"J24*I24","v":0},null,{"$f":"K24-G24","v":-2.63},{"$f":"IF((G24)=0,\"\",(M24/G24))","v":-1},null,0,1,{"$f":"Q24*P24","v":0},null,0,{"$f":"IF((K24)=0,\"\",(T24/K24))","v":""},null,0,1,{"$f":"X24*W24","v":0},null,0,{"$f":"IF((R24)=0,\"\",(AA24/R24))","v":""},null,0,1,{"$f":"AE24*AD24","v":0},null,0,{"$f":"IF((Y24)=0,\"\",(AH24/Y24))","v":""},null,0,1,{"$f":"AL24*AK24","v":0},null,0,{"$f":"IF((AF24)=0,\"\",(AO24/AF24))","v":""}]
["Rate Rider Smart Meters Capital (2016)",null,"Monthly",null,0,1,0,null,{"$f":"'Rates Summary'!C10","v":0.25},1,{"$f":"J25*I25","v":0.25},null,{"$f":"K25-G25","v":0.25},null,null,0,1,{"$f":"Q25*P25","v":0},null,-0.25,-1,null,0,1,{"$f":"X25*W25","v":0},null,0,"",null,0,1,{"$f":"AE25*AD25","v":0},null,0,"",null,0,1,{"$f":"AL25*AK25","v":0},null,0,""]
["Rate Rider Recovery of Stranded Meters",null,"Monthly",null,0,1,0,null,{"$f":"'Rates Summary'!$C11","v":3.69},1,3.69,null,3.69,null,null,0,1,0,null,-3.69,-1,null,0,1,0,null,0,"",null,0,1,0,null,0,"",null,0,1,0,null,0,""]
[null,null,null,null,null,1,0,null,null,1,0,null,0,{"$f":"IF((G27)=0,\"\",(M27/G27))","v":""},null,null,1,0,null,0,"",null,null,1,0,null,0,"",null,null,1,0,null,0,"",null,null,1,0,null,0,""]
[null,null,null,null,null,1,0,null,null,1,0,null,0,"",null,null,1,0,null,0,"",null,null,1,0,null,0,"",null,null,1,0,null,0,"",null,null,1,0,null,0,""]
["Distribution Volumetric Rate",null,"per kWh",null,1.54E-2,{"$f":"$E$18","v":500},{"$f":"F29*E29","v":7.7},null,{"$f":"'Rates Summary'!$E$40","v":1.3899999999999999E-2},{"$f":"$E$18","v":500},6.9499999999999993,null,-0.75000000000000089,-9.7402597402597518E-2,null,{"$f":"'Rates Summary'!$F$40","v":8.2000000000000007E-3},{"$f":"$E$18","v":500},4.1000000000000005,null,-2.8499999999999988,-0.410071942446043,null,{"$f":"'Rates Summary'!$G$40","v":4.1999999999999997E-3},{"$f":"$E$18","v":500},2.1,null,-2.0000000000000004,-0.48780487804878053,null,{"$f":"'Rates Summary'!$H$40","v":0},{"$f":"$E$18","v":500},0,null,-2.1,-1,null,{"$f":"'Rates Summary'!$I$40","v":0},{"$f":"$E$18","v":500},0,null,0,""]
["Rate Rider Tax Change (2015)",null,"per kWh",null,-1E-4,{"$f":"$E$18","v":500},{"$f":"F30*E30","v":-0.05},null,0,{"$f":"$E$18","v":500},0,null,0.05,{"$f":"IF((G30)=0,\"\",(M30/G30))","v":-1},null,0,{"$f":"$E$18","v":500},0,null,0,"",null,0,{"$f":"$E$18","v":500},0,null,0,"",null,0,{"$f":"$E$18","v":500},0,null,0,"",null,0,{"$f":"$E$18","v":500},0,null,0,""]
["LRAM VA (2016)",null,"per kWh",null,0,{"$f":"$E$18","v":500},0,null,{"$f":"'Rates Summary'!C7","v":2.9999999999999997E-4},500,0.15,null,0.15,null,null,0,500,0,null,-0.15,{"$f":"IF((K31)=0,\"\",(T31/K31))","v":-1},null,0,500,0,null,0,"",null,0,500,0,null,0,"",null,0,500,0,null,0,""]
["Rate Rider Incremental Capital 2012 True-Up (2016)",null,"per kWh",null,0,{"$f":"$E$18","v":500},0,null,{"$f":"'Rates Summary'!C9","v":4.0000000000000002E-4},500,0.2,null,0.2,null,null,0,500,0,null,-0.2,{"$f":"IF((K32)=0,\"\",(T32/K32))","v":-1},null,0,500,0,null,0,"",null,0,500,0,null,0,"",null,0,500,0,null,0,""]
[null,null,"per kWh",null,0,{"$f":"$E$19","v":0},0,null,null,{"$f":"$E$19","v":0},0,null,0,{"$f":"IF((G33)=0,\"\",(M33/G33))","v":""},null,null,{"$f":"$E$19","v":0},0,null,0,"",null,null,{"$f":"$E$19","v":0},0,null,0,"",null,null,{"$f":"$E$19","v":0},0,null,0,"",null,null,{"$f":"$E$19","v":0},0,null,0,""]
[null,null,null,null,0,500,0,null,null,500,0,null,0,"",null,null,500,0,null,0,"",null,null,500,0,null,0,"",null,null,500,0,null,0,"",null,null,500,0,null,0,""]
[null,null,null,null,null,500,0,null,null,500,0,null,0,"",null,null,500,0,null,0,"",null,null,500,0,null,0,"",null,null,500,0,null,0,"",null,null,500,0,null,0,""]
[null,null,null,null,null,500,0,null,null,500,0,null,0,"",null,null,500,0,null,0,"",null,null,500,0,null,0,"",null,null,500,0,null,0,"",null,null,500,0,null,0,""]
[null,null,null,null,null,500,0,null,null,500,0,null,0,"",null,null,500,0,null,0,"",null,null,500,0,null,0,"",null,null,500,0,null,0,"",null,null,500,0,null,0,""]
[null,null,null,null,null,500,0,null,null,500,0,null,0,"",null,null,500,0,null,0,"",null,null,500,0,null,0,"",null,null,500,0,null,0,"",null,null,500,0,null,0,""]
["Sub-Total A (excluding pass through)",null,null,null,null,null,{"$f":"SUM(G23:G38)","v":22.84},null,null,null,{"$f":"SUM(K23:K38)","v":25.22},null,{"$f":"K39-G39","v":2.379999999999999},0.10420315236427316,null,null,null,{"$f":"SUM(R23:R38)","v":22.64},null,-2.5799999999999983,-0.10229976209357647,null,null,null,{"$f":"SUM(Y23:Y38)","v":23.98},null,1.3399999999999999,5.9187279151943453E-2,null,null,null,{"$f":"SUM(AF23:AF38)","v":25.35},null,1.370000000000001,5.7130942452043407E-2,null,null,null,{"$f":"SUM(AM23:AM38)","v":25.96},null,0.60999999999999943,2.4063116370808654E-2]
["Deferral/Variance Account Disposition Rate Rider (2016)",null,"per kWh",null,0,{"$f":"$E$18","v":500},{"$f":"F40*E40","v":0},null,{"$f":"'Rates Summary'!C5","v":6.9999999999999999E-4},{"$f":"$E$18","v":500},{"$f":"J40*I40","v":0.35},null,{"$f":"K40-G40","v":0.35},{"$f":"IF((G40)=0,\"\",(M40/G40))","v":""},null,0,{"$f":"$E$18","v":500},{"$f":"Q40*P40","v":0},null,-0.35,-1,null,0,{"$f":"$E$18","v":500},{"$f":"X40*W40","v":0},null,0,"",null,0,{"$f":"$E$18","v":500},{"$f":"AE40*AD40","v":0},null,0,"",null,0,{"$f":"$E$18","v":500},{"$f":"AL40*AK40","v":0},null,0,""]
[null,null,null,null,null,{"$f":"$E$18","v":500},{"$f":"F41*E41","v":0},null,{"$f":"E41","v":0},{"$f":"$E$18","v":500},{"$f":"J41*I41","v":0},null,{"$f":"K41-G41","v":0},{"$f":"IF((G41)=0,\"\",(M41/G41))","v":""},null,null,{"$f":"$E$18","v":500},{"$f":"Q41*P41","v":0},null,0,"",null,null,{"$f":"$E$18","v":500},{"$f":"X41*W41","v":0},null,0,"",null,null,{"$f":"$E$18","v":500},{"$f":"AE41*AD41","v":0},null,0,"",null,null,{"$f":"$E$18","v":500},{"$f":"AL41*AK41","v":0},null,0,""]
["Rate Rider CGAAP Account 1576 (2016)",null,"per kWh",null,0,500,0,null,{"$f":"'Rates Summary'!$C$8","v":-1.0800000000000001E-2},500,-5.4,null,-5.4,"",null,0,500,0,null,5.4,-1,null,{"$f":"P42","v":0},500,0,null,0,"",null,{"$f":"W42","v":0},500,0,null,0,"",null,{"$f":"AD42","v":0},500,0,null,0,""]
["Disposition of Global Adjustment (2015)  \nApplicable to Non-RPP Customers",null,"per kWh",null,1.5599999999999999E-2,0,0,null,0,500,0,null,0,"",null,0,500,0,null,0,"",null,0,500,0,null,0,"",null,0,500,0,null,0,"",null,0,500,0,null,0,""]
["Disposition of Global Adjustment (2016) \nApplicable to Non-RPP Customers",null,"per kWh",null,0,500,0,null,{"$f":"'Rates Summary'!C6","v":2.0500000000000001E-2},0,0,null,0,"",null,0,500,0,null,0,"",null,0,500,0,null,0,"",null,0,500,0,null,0,"",null,0,500,0,null,0,""]
["Low Voltage Service Charge",null,"per kWh",null,6.9999999999999999E-4,500,{"$f":"F45*E45","v":0.35},null,{"$f":"'Rates Summary'!C15","v":1.1999999999999999E-3},500,{"$f":"J45*I45","v":0.6},null,{"$f":"K45-G45","v":0.25},{"$f":"IF((G45)=0,\"\",(M45/G45))","v":0.7142857142857143},null,{"$f":"I45","v":1.1999999999999999E-3},500,{"$f":"Q45*P45","v":0.6},null,{"$f":"R45-K45","v":0},0,null,{"$f":"P45","v":1.1999999999999999E-3},500,{"$f":"X45*W45","v":0.6},null,{"$f":"Y45-R45","v":0},0,null,{"$f":"W45","v":1.1999999999999999E-3},500,{"$f":"AE45*AD45","v":0.6},null,{"$f":"AF45-Y45","v":0},0,null,{"$f":"AD45","v":1.1999999999999999E-3},500,{"$f":"AL45*AK45","v":0.6},null,{"$f":"AM45-AF45","v":0},0]
["Line Losses on Cost of Power",null,"per kWh",null,{"$f":"IF(ISBLANK(C16)=TRUE, 0, IF(C16=\"TOU\", 0.64*$E$56+0.18*$E$57+0.18*$E$58, IF(AND(C16=\"non-TOU\", F60>0), E60,E59)))","v":0.10766000000000001},{"$f":"$E$18*(1+$E$75)-$E$18","v":17.200000000000045},1.8517520000000049,null,{"$f":"E46","v":0.10766000000000001},{"$f":"$E$18*(1+$I$75)-$E$18","v":19.649999999999977},2.1155189999999977,null,0.26376699999999276,0.14244186046511198,null,{"$f":"I46","v":0.10766000000000001},{"$f":"$E$18*(1+$I$75)-$E$18","v":19.649999999999977},{"$f":"Q46*P46","v":2.1155189999999977},null,{"$f":"R46-K46","v":0},0,null,{"$f":"P46","v":0.10766000000000001},{"$f":"$E$18*(1+$I$75)-$E$18","v":19.649999999999977},{"$f":"X46*W46","v":2.1155189999999977},null,{"$f":"Y46-R46","v":0},0,null,{"$f":"W46","v":0.10766000000000001},{"$f":"$E$18*(1+$I$75)-$E$18","v":19.649999999999977},{"$f":"AE46*AD46","v":2.1155189999999977},null,{"$f":"AF46-Y46","v":0},0,null,{"$f":"AD46","v":0.10766000000000001},{"$f":"$E$18*(1+$I$75)-$E$18","v":19.649999999999977},{"$f":"AL46*AK46","v":2.1155189999999977},null,{"$f":"AM46-AF46","v":0},0]
["Smart Meter Entity Charge",null,"Monthly",null,0.79,1,{"$f":"F47*E47","v":0.79},null,0.79,1,{"$f":"J47*I47","v":0.79},null,{"$f":"K47-G47","v":0},null,null,0.79,1,{"$f":"Q47*P47","v":0.79},null,{"$f":"R47-K47","v":0},0,null,0.79,1,{"$f":"X47*W47","v":0.79},null,{"$f":"Y47-R47","v":0},0,null,0,1,{"$f":"AE47*AD47","v":0},null,{"$f":"AF47-Y47","v":-0.79},-1,null,0,1,{"$f":"AL47*AK47","v":0},null,{"$f":"AM47-AF47","v":0},""]
["Sub-Total B - Distribution (includes Sub-Total A)",null,null,null,null,null,{"$f":"SUM(G40:G47)+G39","v":25.831752000000005},null,null,null,{"$f":"SUM(K40:K47)+K39","v":23.675518999999994},null,{"$f":"K48-G48","v":-2.1562330000000109},{"$f":"IF((G48)=0,\"\",(M48/G48))","v":-8.347219344626762E-2},null,null,null,{"$f":"SUM(R40:R47)+R39","v":26.145519},null,{"$f":"R48-K48","v":2.470000000000006},0.10432717441167844,null,null,null,{"$f":"SUM(Y40:Y47)+Y39","v":27.485518999999996},null,{"$f":"Y48-R48","v":1.3399999999999963},5.1251612178744521E-2,null,null,null,{"$f":"SUM(AF40:AF47)+AF39","v":28.065518999999998},null,{"$f":"AF48-Y48","v":0.58000000000000185},2.1102021031511244E-2,null,null,null,{"$f":"SUM(AM40:AM47)+AM39","v":28.675518999999998},null,{"$f":"AM48-AF48","v":0.60999999999999943},2.1734855500088898E-2]
["RTSR - Network",null,"per kWh",null,6.7000000000000002E-3,{"$f":"$E$18*(1+$E$75)","v":517.20000000000005},{"$f":"F49*E49","v":3.4652400000000005},null,{"$f":"'Rates Summary'!C17","v":7.1000000000000004E-3},{"$f":"$E$18*(1+$I$75)","v":519.65},{"$f":"J49*I49","v":3.6895150000000001},null,0.22427499999999956,6.4721346861977683E-2,null,{"$f":"I49","v":7.1000000000000004E-3},{"$f":"$E$18*(1+P75)","v":519.65},{"$f":"Q49*P49","v":3.6895150000000001},null,0,0,null,{"$f":"P49","v":7.1000000000000004E-3},{"$f":"$E$18*(1+W75)","v":519.65},{"$f":"X49*W49","v":3.6895150000000001},null,0,0,null,{"$f":"W49","v":7.1000000000000004E-3},{"$f":"$E$18*(1+AD75)","v":519.65},{"$f":"AE49*AD49","v":3.6895150000000001},null,0,0,null,{"$f":"AD49","v":7.1000000000000004E-3},{"$f":"$E$18*(1+AK75)","v":519.65},{"$f":"AL49*AK49","v":3.6895150000000001},null,0,0]
["RTSR - Line and Transformation Connection",null,"per kWh",null,5.1000000000000004E-3,{"$f":"F49","v":517.20000000000005},{"$f":"F50*E50","v":2.6377200000000003},null,{"$f":"'Rates Summary'!C18","v":5.5999999999999999E-3},{"$f":"J49","v":519.65},{"$f":"J50*I50","v":2.91004},null,0.27231999999999967,0.10324067755485784,null,{"$f":"I50","v":5.5999999999999999E-3},{"$f":"Q49","v":519.65},{"$f":"Q50*P50","v":2.91004},null,0,0,null,{"$f":"P50","v":5.5999999999999999E-3},{"$f":"X49","v":519.65},{"$f":"X50*W50","v":2.91004},null,0,0,null,{"$f":"W50","v":5.5999999999999999E-3},{"$f":"AE49","v":519.65},{"$f":"AE50*AD50","v":2.91004},null,0,0,null,{"$f":"AD50","v":5.5999999999999999E-3},{"$f":"AL49","v":519.65},{"$f":"AL50*AK50","v":2.91004},null,0,0]
["Sub-Total C - Delivery (including Sub-Total B)",null,null,null,null,null,{"$f":"SUM(G48:G50)","v":31.934712000000008},null,null,null,{"$f":"SUM(K48:K50)","v":30.275073999999993},null,-1.6596380000000153,-5.1969718718616123E-2,null,null,null,{"$f":"SUM(R48:R50)","v":32.745074000000002},null,2.4700000000000095,8.1585267140883294E-2,null,null,null,{"$f":"SUM(Y48:Y50)","v":34.085073999999999},null,1.3399999999999963,4.0922185730897911E-2,null,null,null,{"$f":"SUM(AF48:AF50)","v":34.665073999999997},null,0.57999999999999829,1.7016245879354651E-2,null,null,null,{"$f":"SUM(AM48:AM50)","v":35.275073999999996},null,0.60999999999999943,1.7596962291209862E-2]
["Wholesale Market Service Charge (WMSC)",null,"per kWh",null,4.4000000000000003E-3,{"$f":"F50","v":517.20000000000005},{"$f":"F52*E52","v":2.2756800000000004},null,{"$f":"'Rates Summary'!C19","v":4.4000000000000003E-3},{"$f":"J50","v":519.65},{"$f":"J52*I52","v":2.2864599999999999},null,1.0779999999999568E-2,4.7370456303169016E-3,null,{"$f":"I52","v":4.4000000000000003E-3},{"$f":"Q50","v":519.65},{"$f":"Q52*P52","v":2.2864599999999999},null,0,0,null,{"$f":"P52","v":4.4000000000000003E-3},{"$f":"X50","v":519.65},{"$f":"X52*W52","v":2.2864599999999999},null,0,0,null,{"$f":"W52","v":4.4000000000000003E-3},{"$f":"AE50","v":519.65},{"$f":"AE52*AD52","v":2.2864599999999999},null,0,0,null,{"$f":"AD52","v":4.4000000000000003E-3},{"$f":"AL50","v":519.65},{"$f":"AL52*AK52","v":2.2864599999999999},null,0,0]
["Rural and Remote Rate Protection (RRRP)",null,"per kWh",null,1.2999999999999999E-3,{"$f":"F50","v":517.20000000000005},0.67236000000000007,null,{"$f":"'Rates Summary'!C20","v":1.2999999999999999E-3},{"$f":"J50","v":519.65},0.67554499999999995,null,3.1849999999998824E-3,4.7370456303169163E-3,null,{"$f":"I53","v":1.2999999999999999E-3},{"$f":"Q50","v":519.65},0.67554499999999995,null,0,0,null,{"$f":"P53","v":1.2999999999999999E-3},{"$f":"X50","v":519.65},0.67554499999999995,null,0,0,null,{"$f":"W53","v":1.2999999999999999E-3},{"$f":"AE50","v":519.65},0.67554499999999995,null,0,0,null,{"$f":"AD53","v":1.2999999999999999E-3},{"$f":"AL50","v":519.65},0.67554499999999995,null,0,0]
["Standard Supply Service Charge",null,"Monthly",null,0.25,1,0.25,null,{"$f":"'Rates Summary'!C21","v":0.25},1,0.25,null,0,0,null,{"$f":"I54","v":0.25},1,0.25,null,0,0,null,{"$f":"P54","v":0.25},1,0.25,null,0,0,null,{"$f":"W54","v":0.25},1,0.25,null,0,0,null,{"$f":"AD54","v":0.25},1,0.25,null,0,0]
["Debt Retirement Charge (DRC)",null,"per kWh",null,7.0000000000000001E-3,{"$f":"E18","v":500},3.5,null,0,{"$f":"E18","v":500},0,null,-3.5,-1,null,0,{"$f":"J55","v":500},0,null,0,"",null,0,{"$f":"Q55","v":500},0,null,0,"",null,0,{"$f":"X55","v":500},0,null,0,"",null,0,{"$f":"AE55","v":500},0,null,0,""]
["TOU - Off Peak",null,"per kWh",null,8.3000000000000004E-2,{"$f":"0.64*$E$18","v":320},26.560000000000002,null,{"$f":"E56","v":8.3000000000000004E-2},{"$f":"F56","v":320},26.560000000000002,null,0,0,null,{"$f":"I56","v":8.3000000000000004E-2},{"$f":"J56","v":320},26.560000000000002,null,0,0,null,{"$f":"P56","v":8.3000000000000004E-2},{"$f":"Q56","v":320},26.560000000000002,null,0,0,null,{"$f":"W56","v":8.3000000000000004E-2},{"$f":"X56","v":320},26.560000000000002,null,0,0,null,{"$f":"AD56","v":8.3000000000000004E-2},{"$f":"AE56","v":320},26.560000000000002,null,0,0]
["TOU - Mid Peak",null,"per kWh",null,0.128,{"$f":"0.18*$E$18","v":90},11.52,null,{"$f":"E57","v":0.128},{"$f":"F57","v":90},11.52,null,0,0,null,{"$f":"I57","v":0.128},90,11.52,null,0,0,null,{"$f":"P57","v":0.128},90,11.52,null,0,0,null,{"$f":"W57","v":0.128},90,11.52,null,0,0,null,{"$f":"AD57","v":0.128},90,11.52,null,0,0]
["TOU - On Peak",null,"per kWh",null,0.17499999999999999,{"$f":"0.18*$E$18","v":90},15.749999999999998,null,0.17499999999999999,{"$f":"F58","v":90},15.749999999999998,null,0,0,null,0.17499999999999999,90,15.749999999999998,null,0,0,null,0.17499999999999999,90,15.749999999999998,null,0,0,null,0.17499999999999999,90,15.749999999999998,null,0,0,null,0.17499999999999999,90,15.749999999999998,null,0,0]
["Energy - RPP - Tier 1",null,"per kWh",null,9.9000000000000005E-2,{"$f":"IF(AND($S$1=1, E18>=600), 600, IF(AND($S$1=1, AND(E18<600, E18>=0)), E18, IF(AND($S$1=2, E18>=1000), 1000, IF(AND($S$1=2, AND(E18<1000, E18>=0)), E18))))","v":500},{"$f":"F59*E59","v":49.5},null,9.9000000000000005E-2,{"$f":"F59","v":500},{"$f":"J59*I59","v":49.5},null,0,0,null,9.9000000000000005E-2,500,{"$f":"Q59*P59","v":49.5},null,0,0,null,9.9000000000000005E-2,500,{"$f":"X59*W59","v":49.5},null,0,0,null,9.9000000000000005E-2,500,{"$f":"AE59*AD59","v":49.5},null,0,0,null,9.9000000000000005E-2,500,{"$f":"AL59*AK59","v":49.5},null,0,0]
["Energy - RPP - Tier 2",null,"per kWh",null,0.11600000000000001,{"$f":"IF(AND($S$1=1, E18>=600), E18-600, IF(AND($S$1=1, AND(E18<600, E18>=0)), 0, IF(AND($S$1=2, E18>=1000), E18-1000, IF(AND($S$1=2, AND(E18<1000, E18>=0)), 0))))","v":0},{"$f":"F60*E60","v":0},null,0.11600000000000001,{"$f":"F60","v":0},{"$f":"J60*I60","v":0},null,0,"",null,0.11600000000000001,0,{"$f":"Q60*P60","v":0},null,0,"",null,0.11600000000000001,0,{"$f":"X60*W60","v":0},null,0,"",null,0.11600000000000001,0,{"$f":"AE60*AD60","v":0},null,0,"",null,0.11600000000000001,0,{"$f":"AL60*AK60","v":0},null,0,""]
[null,null,null,null,null,null,null,null,null,null,null,null,null,null,null,null,null,null,null,null,"",null,null,null,null,null,null,"",null,null,null,null,null,null,"",null,null,null,null,null,null,""]
["Total Bill on TOU (before Taxes)",null,null,null,null,null,{"$f":"SUM(G52:G58,G51)","v":92.462752000000009},null,null,null,{"$f":"SUM(K52:K58,K51)","v":87.317078999999993},null,{"$f":"K62-G62","v":-5.1456730000000164},{"$f":"IF((G62)=0,\"\",(M62/G62))","v":-5.5651307025774185E-2},null,null,null,{"$f":"SUM(R52:R58,R51)","v":89.787079000000006},null,{"$f":"R62-K62","v":2.4700000000000131},2.8287707608725818E-2,null,null,null,{"$f":"SUM(Y52:Y58,Y51)","v":91.127079000000009},null,{"$f":"Y62-R62","v":1.3400000000000034},1.4924196386876594E-2,null,null,null,{"$f":"SUM(AF52:AF58,AF51)","v":91.707078999999993},null,{"$f":"AF62-Y62","v":0.57999999999998408},6.3647381915970776E-3,null,null,null,{"$f":"SUM(AM52:AM58,AM51)","v":92.317079000000007},null,{"$f":"AM62-AF62","v":0.61000000000001364},6.6516130123391425E-3]
["HST",null,null,null,0.13,null,{"$f":"G62*E63","v":12.020157760000002},null,0.13,null,{"$f":"K62*I63","v":11.351220269999999},null,-0.66893749000000291,-5.5651307025774248E-2,null,0.13,null,{"$f":"R62*P63","v":11.672320270000002},null,{"$f":"R63-K63","v":0.32110000000000305},2.8287707608725936E-2,null,0.13,null,{"$f":"Y62*W63","v":11.846520270000001},null,{"$f":"Y63-R63","v":0.17419999999999902},1.4924196386876471E-2,null,0.13,null,{"$f":"AF62*AD63","v":11.921920269999999},null,{"$f":"AF63-Y63","v":7.5399999999998357E-2},6.364738191597114E-3,null,0.13,null,{"$f":"AM62*AK63","v":12.001220270000001},null,{"$f":"AM63-AF63","v":7.9300000000001702E-2},6.6516130123391365E-3]
["Total Bill (including HST)",null,null,null,null,null,{"$f":"G62+G63","v":104.48290976000001},null,null,null,{"$f":"K62+K63","v":98.668299269999991},null,-5.8146104900000211,-5.5651307025774206E-2,null,null,null,{"$f":"R62+R63","v":101.45939927000001},null,2.7911000000000143,2.8287707608725812E-2,null,null,null,{"$f":"Y62+Y63","v":102.97359927000001},null,1.5142000000000024,1.492419638687658E-2,null,null,null,{"$f":"AF62+AF63","v":103.62899926999999},null,0.65539999999998599,6.3647381915971166E-3,null,null,null,{"$f":"AM62+AM63","v":104.31829927000001},null,0.68930000000001712,6.6516130123391581E-3]
["Ontario Clean Energy Benefit 1",null,null,null,null,null,{"$f":"ROUND(-G64*10%,2)","v":-10.45},null,null,null,0,null,10.45,-1,null,null,null,0,null,0,"",null,null,null,0,null,0,"",null,null,null,0,null,0,"",null,null,null,0,null,0,""]
["Total Bill on TOU (including OCEB)",null,null,null,null,null,{"$f":"G64+G65","v":94.03290976000001},null,null,null,{"$f":"K64+K65","v":98.668299269999991},null,4.6353895099999818,4.9295395854822281E-2,null,null,null,{"$f":"R64+R65","v":101.45939927000001},null,2.7911000000000143,2.8287707608725812E-2,null,null,null,{"$f":"Y64+Y65","v":102.97359927000001},null,1.5142000000000024,1.492419638687658E-2,null,null,null,{"$f":"AF64+AF65","v":103.62899926999999},null,0.65539999999998599,6.3647381915971166E-3,null,null,null,{"$f":"AM64+AM65","v":104.31829927000001},null,0.68930000000001712,6.6516130123391581E-3]
[null,null,null,null,null,null,null,null,null,null,null,null,null,null,null,null,null,null,null,null,"",null,null,null,null,null,null,"",null,null,null,null,null,null,"",null,null,null,null,null,null,""]
["Total Bill on RPP (before Taxes)",null,null,null,null,null,{"$f":"SUM(G59:G60,G52:G55,G51)","v":88.132752000000011},null,null,null,{"$f":"SUM(K59:K60,K52:K55,K51)","v":82.987078999999994},null,{"$f":"K68-G68","v":-5.1456730000000164},{"$f":"IF((G68)=0,\"\",(M68/G68))","v":-5.8385479668217055E-2},null,null,null,{"$f":"SUM(R59:R60,R52:R55,R51)","v":85.457078999999993},null,{"$f":"R68-K68","v":2.4699999999999989},2.9763669594877522E-2,null,null,null,{"$f":"SUM(Y59:Y60,Y52:Y55,Y51)","v":86.797078999999997},null,{"$f":"Y68-R68","v":1.3400000000000034},1.5680386173742299E-2,null,null,null,{"$f":"SUM(AF59:AF60,AF52:AF55,AF51)","v":87.377078999999995},null,{"$f":"AF68-Y68","v":0.57999999999999829},6.6822525214241171E-3,null,null,null,{"$f":"SUM(AM59:AM60,AM52:AM55,AM51)","v":87.987078999999994},null,{"$f":"AM68-AF68","v":0.60999999999999943},6.9812358913943495E-3]
["HST",null,null,null,0.13,null,{"$f":"G68*E69","v":11.457257760000001},null,0.13,null,{"$f":"K68*I69","v":10.78832027},null,-0.66893749000000113,{"$f":"IF((G69)=0,\"\",(M69/G69))","v":-5.8385479668216965E-2},null,0.13,null,{"$f":"R68*P69","v":11.109420269999999},null,{"$f":"R69-K69","v":0.3210999999999995},2.9763669594877491E-2,null,0.13,null,{"$f":"Y68*W69","v":11.28362027},null,{"$f":"Y69-R69","v":0.1742000000000008},1.5680386173742334E-2,null,0.13,null,{"$f":"AF68*AD69","v":11.35902027},null,{"$f":"AF69-Y69","v":7.5400000000000134E-2},6.6822525214241483E-3,null,0.13,null,{"$f":"AM68*AK69","v":11.43832027},null,{"$f":"AM69-AF69","v":7.9299999999999926E-2},6.9812358913943487E-3]
["Total Bill (including HST)",null,null,null,null,null,{"$f":"G68+G69","v":99.590009760000015},null,null,null,{"$f":"K68+K69","v":93.775399269999994},null,-5.8146104900000211,-5.8385479668217076E-2,null,null,null,{"$f":"R68+R69","v":96.566499269999994},null,2.7911000000000001,2.9763669594877539E-2,null,null,null,{"$f":"Y68+Y69","v":98.080699269999997},null,1.5142000000000024,1.5680386173742285E-2,null,null,null,{"$f":"AF68+AF69","v":98.736099269999997},null,0.6554000000000002,6.6822525214241396E-3,null,null,null,{"$f":"AM68+AM69","v":99.42539927},null,0.68930000000000291,6.9812358913943851E-3]
["Ontario Clean Energy Benefit 1",null,null,null,null,null,{"$f":"ROUND(-G70*10%,2)","v":-9.9600000000000009},null,null,null,0,null,9.9600000000000009,-1,null,null,null,0,null,0,"",null,null,null,0,null,0,"",null,null,null,0,null,0,"",null,null,null,0,null,0,""]
["Total Bill on RPP (including OCEB)",null,null,null,null,null,{"$f":"SUM(G70:G71)","v":89.630009760000007},null,null,null,{"$f":"SUM(K70:K71)","v":93.775399269999994},null,4.1453895099999869,4.6250017389264944E-2,null,null,null,{"$f":"SUM(R70:R71)","v":96.566499269999994},null,2.7911000000000001,2.9763669594877539E-2,null,null,null,{"$f":"SUM(Y70:Y71)","v":98.080699269999997},null,1.5142000000000024,1.5680386173742285E-2,null,null,null,{"$f":"SUM(AF70:AF71)","v":98.736099269999997},null,0.6554000000000002,6.6822525214241396E-3,null,null,null,{"$f":"SUM(AM70:AM71)","v":99.42539927},null,0.68930000000000291,6.9812358913943851E-3]
[null,null,null,null,null,null,null,null,null,null,null,null,null,null,null,null,null,null,null,null,null,null,null,null,null,null,null,"",null,null,null,null,null,null,"",null,null,null,null,null,null,""]
[]
["Loss Factor (%)",null,null,null,3.44E-2,null,null,null,3.9300000000000002E-2,null,null,null,null,null,null,3.9300000000000002E-2,null,null,null,null,null,null,3.9300000000000002E-2,null,null,null,null,null,null,3.9300000000000002E-2,null,null,null,null,null,null,3.9300000000000002E-2]
[]
["Distribution Excluding Rate Riders",null,null,null,"2015 Current Board-Approved",null,null,null,"2016 Test Year 1\nProposed",null,null,null,"Impact\n2016 TEST vs. \n2015 Bridge",null,null,"2017 Test Year 2\nProposed",null,null,null,"Impact\n2017 TEST 2 vs. \n2016 Test 1",null,null,"2018 Test Year 3\nProposed",null,null,null,"Impact\n2018 TEST 3 vs. \n2017 Test 2",null,null,"2019 Test Year 4\nProposed",null,null,null,"Impact\n2019 TEST 4 vs. \n2018 Test 3",null,null,"2020 Test Year 5 \nProposed",null,null,null,"Impact\n2020 TEST 5 vs. \n2019 Test 4"]
[null,null,"Charge Unit",null,"Rate","Volume","Charge",null,"Rate","Volume","Charge",null,"$ Change","% Change",null,"Rate","Volume","Charge",null,"$ Change","% Change",null,"Rate","Volume","Charge",null,"$ Change","% Change",null,"Rate","Volume","Charge",null,"$ Change","% Change",null,"Rate","Volume","Charge",null,"$ Change","% Change"]
[null,null,null,null,"($)",null,"($)",null,"($)",null,"($)",null,null,null,null,"($)",null,"($)",null,null,null,null,"($)",null,"($)",null,null,null,null,"($)",null,"($)",null,null,null,null,"($)",null,"($)"]
["Monthly Service Charge",null,"Monthly",null,12.56,1,{"$f":"F80*E80","v":12.56},null,{"$f":"'Rates Summary'!$E$28","v":13.98},1,{"$f":"J80*I80","v":13.98},null,{"$f":"K80-G80","v":1.42},{"$f":"IF((G80)=0,\"\",(M80/G80))","v":0.11305732484076432},null,{"$f":"'Rates Summary'!$F$28","v":18.54},1,{"$f":"Q80*P80","v":18.54},null,{"$f":"R80-K80","v":4.5599999999999987},{"$f":"IF((K80)=0,\"\",(T80/K80))","v":0.32618025751072949},null,{"$f":"'Rates Summary'!$G$28","v":21.88},1,{"$f":"X80*W80","v":21.88},null,{"$f":"Y80-R80","v":3.34},{"$f":"IF((R80)=0,\"\",(AA80/R80))","v":0.18015102481121897},null,{"$f":"'Rates Summary'!$H$28","v":25.35},1,{"$f":"AE80*AD80","v":25.35},null,{"$f":"AF80-Y80","v":3.4700000000000024},{"$f":"IF((Y80)=0,\"\",(AH80/Y80))","v":0.15859232175502755},null,{"$f":"'Rates Summary'!$I$28","v":25.96},1,{"$f":"AL80*AK80","v":25.96},null,{"$f":"AM80-AF80","v":0.60999999999999943},{"$f":"IF((AF80)=0,\"\",(AO80/AF80))","v":2.4063116370808654E-2}]
["Distribution Volumetric Rate",null,"per kWh",null,1.54E-2,{"$f":"$E$18","v":500},{"$f":"F81*E81","v":7.7},null,{"$f":"'Rates Summary'!$E$40","v":1.3899999999999999E-2},{"$f":"$E$18","v":500},{"$f":"J81*I81","v":6.9499999999999993},null,{"$f":"K81-G81","v":-0.75000000000000089},{"$f":"IF((G81)=0,\"\",(M81/G81))","v":-9.7402597402597518E-2},null,{"$f":"'Rates Summary'!$F$40","v":8.2000000000000007E-3},{"$f":"$E$18","v":500},{"$f":"Q81*P81","v":4.1000000000000005},null,-2.8499999999999988,{"$f":"IF((K81)=0,\"\",(T81/K81))","v":-0.410071942446043},null,{"$f":"'Rates Summary'!$G$40","v":4.1999999999999997E-3},{"$f":"$E$18","v":500},{"$f":"X81*W81","v":2.1},null,-2.0000000000000004,{"$f":"IF((R81)=0,\"\",(AA81/R81))","v":-0.48780487804878053},null,{"$f":"'Rates Summary'!$H$40","v":0},{"$f":"$E$18","v":500},{"$f":"AE81*AD81","v":0},null,-2.1,{"$f":"IF((Y81)=0,\"\",(AH81/Y81))","v":-1},null,{"$f":"'Rates Summary'!$I$40","v":0},{"$f":"$E$18","v":500},{"$f":"AL81*AK81","v":0},null,0,{"$f":"IF((AF81)=0,\"\",(AO81/AF81))","v":""}]
["\"Regular\" Distribution Only",null,null,null,null,null,{"$f":"SUM(G80:G81)","v":20.260000000000002},null,null,null,{"$f":"SUM(K80:K81)","v":20.93},null,0.66999999999999815,3.3070088845014715E-2,null,null,null,{"$f":"SUM(R80:R81)","v":22.64},null,1.7100000000000009,8.1700907787864346E-2,null,null,null,{"$f":"SUM(Y80:Y81)","v":23.98},null,1.3399999999999999,5.9187279151943453E-2,null,null,null,{"$f":"SUM(AF80:AF81)","v":25.35},null,1.370000000000001,5.7130942452043407E-2,null,null,null,{"$f":"SUM(AM80:AM81)","v":25.96},null,0.60999999999999943,2.4063116370808654E-2]
[]
[null,"Residential (kWh) - 100, 250, 500, 800, 1000, 1500, 2000"]
[null,"GS<50kW (kWh) - 1000, 2000, 5000, 10000, 15000"]
[null,"GS>50kW (kW) - 60, 100, 500, 1000"]
[null,"Large User - range appropriate for utility"]
[null,"Lighting Classes and USL - 150 kWh and 1 kW, range appropriate for utility."]
[]
[null,null,"Note that cells with the highlighted color shown to the left indicate quantities that are loss adjusted."]

{"sheet":"Bill Impact Resi 800kWh","index":6,"n_rows":90,"n_cols":42,"rows_kept":90,"cut":false,"hidden":false,"merged":[[19,33,19,34],[2,0,2,9],[9,0,9,13],[10,0,10,13],[13,2,13,13],[19,4,19,6],[19,8,19,10],[19,12,19,13],[70,0,70,2],[19,36,19,38],[19,40,19,41],[20,2,21,2],[20,12,21,12],[20,13,21,13],[20,19,21,19],[20,20,21,20],[20,26,21,26],[20,27,21,27],[20,33,21,33],[19,15,19,17],[19,19,19,20],[19,22,19,24],[19,26,19,27],[19,29,19,31],[20,34,21,34],[20,40,21,40],[20,41,21,41],[64,0,64,2],[65,0,65,2],[76,36,76,38],[76,40,76,41],[71,0,71,2],[76,4,76,6],[76,8,76,10],[76,12,76,13],[76,15,76,17],[76,19,76,20],[76,22,76,24],[76,26,76,27],[76,29,76,31],[76,33,76,34],[77,27,78,27],[77,33,78,33],[77,34,78,34],[77,40,78,40],[77,41,78,41],[77,26,78,26],[77,2,78,2],[77,12,78,12],[77,13,78,13],[77,19,78,19],[77,20,78,20]]}
[null,null,null,null,null,null,null,null,null,null,null,null,"File Number:",{"$f":"EBNUMBER","v":"EB-2015-0083"},null,null,null,null,1]
[null,null,null,null,null,null,null,null,null,null,null,null,"Exhibit:",8]
[null,null,null,null,null,null,null,null,null,null,null,null,"Tab:",4]
[null,null,null,null,null,null,null,null,null,null,null,null,"Schedule:",3]
[null,null,null,null,null,null,null,null,null,null,null,null,"Page:"]
[]
[null,null,null,null,null,null,null,null,null,null,null,null,null,"Settlement"]
[null,null,null,null,null,null,null,null,null,null,null,null,"Date:","2015-10-16"]
[]
["Appendix 2-W"]
["Bill Impacts"]
[]
[]
["Customer Class:",null,"Residential",null,null,null,null,null,null,null,null,null,null,null,null,{"$f":"C14","v":"Residential"},null,null,null,null,null,null,null,null,null,null,null,null,null,null,null,null,null,null,null,null,{"$f":"P14","v":"Residential"}]
[]
["TOU / non-TOU:",null,"TOU"]
[]
[null,null,"Consumption",null,800," kWh"]
[]
[null,null,null,null,"2015 Current Board-Approved",null,null,null,"2016 Test Year 1\nProposed",null,null,null,"Impact\n2016 TEST vs. \n2015 Bridge",null,null,"2017 Test Year 2\nProposed",null,null,null,"Impact\n2017 TEST 2 vs. \n2016 Test 1",null,null,"2018 Test Year 3\nProposed",null,null,null,"Impact\n2018 TEST 3 vs. \n2017 Test 2",null,null,"2019 Test Year 4\nProposed",null,null,null,"Impact\n2019 TEST 4 vs. \n2018 Test 3",null,null,"2020 Test Year 5 \nProposed",null,null,null,"Impact\n2020 TEST 5 vs. \n2019 Test 4"]
[null,null,"Charge Unit",null,"Rate","Volume","Charge",null,"Rate","Volume","Charge",null,"$ Change","% Change",null,"Rate","Volume","Charge",null,"$ Change","% Change",null,"Rate","Volume","Charge",null,"$ Change","% Change",null,"Rate","Volume","Charge",null,"$ Change","% Change",null,"Rate","Volume","Charge",null,"$ Change","% Change"]
[null,null,null,null,"($)",null,"($)",null,"($)",null,"($)",null,null,null,null,"($)",null,"($)",null,null,null,null,"($)",null,"($)",null,null,null,null,"($)",null,"($)",null,null,null,null,"($)",null,"($)"]
["Monthly Service Charge",null,"Monthly",null,12.56,1,{"$f":"F23*E23","v":12.56},null,{"$f":"'Rates Summary'!$E$28","v":13.98},1,{"$f":"J23*I23","v":13.98},null,{"$f":"K23-G23","v":1.42},{"$f":"IF((G23)=0,\"\",(M23/G23))","v":0.11305732484076432},null,{"$f":"'Rates Summary'!$F$28","v":18.54},1,{"$f":"Q23*P23","v":18.54},null,{"$f":"R23-K23","v":4.5599999999999987},{"$f":"IF((K23)=0,\"\",(T23/K23))","v":0.32618025751072949},null,{"$f":"'Rates Summary'!$G$28","v":21.88},1,{"$f":"X23*W23","v":21.88},null,{"$f":"Y23-R23","v":3.34},{"$f":"IF((R23)=0,\"\",(AA23/R23))","v":0.18015102481121897},null,{"$f":"'Rates Summary'!$H$28","v":25.35},1,{"$f":"AE23*AD23","v":25.35},null,{"$f":"AF23-Y23","v":3.4700000000000024},{"$f":"IF((Y23)=0,\"\",(AH23/Y23))","v":0.15859232175502755},null,{"$f":"'Rates Summary'!$I$28","v":25.96},1,{"$f":"AL23*AK23","v":25.96},null,{"$f":"AM23-AF23","v":0.60999999999999943},{"$f":"IF((AF23)=0,\"\",(AO23/AF23))","v":2.4063116370808654E-2}]
["Smart Meter (SMIRR) Rate Rider",null,"Monthly",null,2.63,1,{"$f":"F24*E24","v":2.63},null,0,1,{"$f":"J24*I24","v":0},null,{"$f":"K24-G24","v":-2.63},{"$f":"IF((G24)=0,\"\",(M24/G24))","v":-1},null,0,1,{"$f":"Q24*P24","v":0},null,0,{"$f":"IF((K24)=0,\"\",(T24/K24))","v":""},null,0,1,{"$f":"X24*W24","v":0},null,0,{"$f":"IF((R24)=0,\"\",(AA24/R24))","v":""},null,0,1,{"$f":"AE24*AD24","v":0},null,0,{"$f":"IF((Y24)=0,\"\",(AH24/Y24))","v":""},null,0,1,{"$f":"AL24*AK24","v":0},null,0,{"$f":"IF((AF24)=0,\"\",(AO24/AF24))","v":""}]
["Rate Rider Smart Meters Capital (2016)",null,"Monthly",null,0,1,0,null,{"$f":"'Rates Summary'!C10","v":0.25},1,{"$f":"J25*I25","v":0.25},null,{"$f":"K25-G25","v":0.25},null,null,0,1,{"$f":"Q25*P25","v":0},null,-0.25,-1,null,0,1,{"$f":"X25*W25","v":0},null,0,"",null,0,1,{"$f":"AE25*AD25","v":0},null,0,"",null,0,1,{"$f":"AL25*AK25","v":0},null,0,""]
["Rate Rider Recovery of Stranded Meters",null,"Monthly",null,0,1,0,null,{"$f":"'Rates Summary'!$C11","v":3.69},1,3.69,null,3.69,null,null,0,1,0,null,-3.69,-1,null,0,1,0,null,0,"",null,0,1,0,null,0,"",null,0,1,0,null,0,""]
[null,null,null,null,null,1,0,null,null,1,0,null,0,{"$f":"IF((G27)=0,\"\",(M27/G27))","v":""},null,null,1,0,null,0,"",null,null,1,0,null,0,"",null,null,1,0,null,0,"",null,null,1,0,null,0,""]
[null,null,null,null,null,1,0,null,null,1,0,null,0,"",null,null,1,0,null,0,"",null,null,1,0,null,0,"",null,null,1,0,null,0,"",null,null,1,0,null,0,""]
["Distribution Volumetric Rate",null,"per kWh",null,1.54E-2,{"$f":"$E$18","v":800},{"$f":"F29*E29","v":12.32},null,{"$f":"'Rates Summary'!$E$40","v":1.3899999999999999E-2},{"$f":"$E$18","v":800},11.12,null,-1.2000000000000011,-9.7402597402597491E-2,null,{"$f":"'Rates Summary'!$F$40","v":8.2000000000000007E-3},{"$f":"$E$18","v":800},6.5600000000000005,null,-4.5599999999999987,-0.41007194244604306,null,{"$f":"'Rates Summary'!$G$40","v":4.1999999999999997E-3},{"$f":"$E$18","v":800},3.36,null,-3.2000000000000006,-0.48780487804878053,null,{"$f":"'Rates Summary'!$H$40","v":0},{"$f":"$E$18","v":800},0,null,-3.36,-1,null,{"$f":"'Rates Summary'!$I$40","v":0},{"$f":"$E$18","v":800},0,null,0,""]
["Rate Rider Tax Change (2015)",null,"per kWh",null,-1E-4,{"$f":"$E$18","v":800},{"$f":"F30*E30","v":-0.08},null,0,{"$f":"$E$18","v":800},0,null,0.08,{"$f":"IF((G30)=0,\"\",(M30/G30))","v":-1},null,0,{"$f":"$E$18","v":800},0,null,0,"",null,0,{"$f":"$E$18","v":800},0,null,0,"",null,0,{"$f":"$E$18","v":800},0,null,0,"",null,0,{"$f":"$E$18","v":800},0,null,0,""]
["LRAM VA (2016)",null,"per kWh",null,0,{"$f":"$E$18","v":800},0,null,{"$f":"'Rates Summary'!C7","v":2.9999999999999997E-4},800,0.24,null,0.24,null,null,0,800,0,null,-0.24,{"$f":"IF((K31)=0,\"\",(T31/K31))","v":-1},null,0,800,0,null,0,"",null,0,800,0,null,0,"",null,0,800,0,null,0,""]
["Rate Rider Incremental Capital 2012 True-Up (2016)",null,"per kWh",null,0,{"$f":"$E$18","v":800},0,null,{"$f":"'Rates Summary'!C9","v":4.0000000000000002E-4},800,0.32,null,0.32,null,null,0,800,0,null,-0.32,{"$f":"IF((K32)=0,\"\",(T32/K32))","v":-1},null,0,800,0,null,0,"",null,0,800,0,null,0,"",null,0,800,0,null,0,""]
[null,null,"per kWh",null,0,{"$f":"$E$19","v":0},0,null,null,{"$f":"$E$19","v":0},0,null,0,{"$f":"IF((G33)=0,\"\",(M33/G33))","v":""},null,null,{"$f":"$E$19","v":0},0,null,0,"",null,null,{"$f":"$E$19","v":0},0,null,0,"",null,null,{"$f":"$E$19","v":0},0,null,0,"",null,null,{"$f":"$E$19","v":0},0,null,0,""]
[null,null,null,null,0,800,0,null,null,800,0,null,0,"",null,null,800,0,null,0,"",null,null,800,0,null,0,"",null,null,800,0,null,0,"",null,null,800,0,null,0,""]
[null,null,null,null,null,800,0,null,null,800,0,null,0,"",null,null,800,0,null,0,"",null,null,800,0,null,0,"",null,null,800,0,null,0,"",null,null,800,0,null,0,""]
[null,null,null,null,null,800,0,null,null,800,0,null,0,"",null,null,800,0,null,0,"",null,null,800,0,null,0,"",null,null,800,0,null,0,"",null,null,800,0,null,0,""]
[null,null,null,null,null,800,0,null,null,800,0,null,0,"",null,null,800,0,null,0,"",null,null,800,0,null,0,"",null,null,800,0,null,0,"",null,null,800,0,null,0,""]
[null,null,null,null,null,800,0,null,null,800,0,null,0,"",null,null,800,0,null,0,"",null,null,800,0,null,0,"",null,null,800,0,null,0,"",null,null,800,0,null,0,""]
["Sub-Total A (excluding pass through)",null,null,null,null,null,{"$f":"SUM(G23:G38)","v":27.430000000000003},null,null,null,{"$f":"SUM(K23:K38)","v":29.599999999999998},null,{"$f":"K39-G39","v":2.1699999999999946},7.9110462996718714E-2,null,null,null,{"$f":"SUM(R23:R38)","v":25.1},null,-4.4999999999999964,-0.15202702702702692,null,null,null,{"$f":"SUM(Y23:Y38)","v":25.24},null,0.13999999999999702,5.5776892430277692E-3,null,null,null,{"$f":"SUM(AF23:AF38)","v":25.35},null,0.11000000000000298,4.3581616481776142E-3,null,null,null,{"$f":"SUM(AM23:AM38)","v":25.96},null,0.60999999999999943,2.4063116370808654E-2]
["Deferral/Variance Account Disposition Rate Rider (2016)",null,"per kWh",null,0,{"$f":"$E$18","v":800},{"$f":"F40*E40","v":0},null,{"$f":"'Rates Summary'!C5","v":6.9999999999999999E-4},{"$f":"$E$18","v":800},{"$f":"J40*I40","v":0.55999999999999994},null,{"$f":"K40-G40","v":0.55999999999999994},{"$f":"IF((G40)=0,\"\",(M40/G40))","v":""},null,0,{"$f":"$E$18","v":800},{"$f":"Q40*P40","v":0},null,-0.55999999999999994,-1,null,0,{"$f":"$E$18","v":800},{"$f":"X40*W40","v":0},null,0,"",null,0,{"$f":"$E$18","v":800},{"$f":"AE40*AD40","v":0},null,0,"",null,0,{"$f":"$E$18","v":800},{"$f":"AL40*AK40","v":0},null,0,""]
[null,null,null,null,null,{"$f":"$E$18","v":800},{"$f":"F41*E41","v":0},null,{"$f":"E41","v":0},{"$f":"$E$18","v":800},{"$f":"J41*I41","v":0},null,{"$f":"K41-G41","v":0},{"$f":"IF((G41)=0,\"\",(M41/G41))","v":""},null,null,{"$f":"$E$18","v":800},{"$f":"Q41*P41","v":0},null,0,"",null,null,{"$f":"$E$18","v":800},{"$f":"X41*W41","v":0},null,0,"",null,null,{"$f":"$E$18","v":800},{"$f":"AE41*AD41","v":0},null,0,"",null,null,{"$f":"$E$18","v":800},{"$f":"AL41*AK41","v":0},null,0,""]
["Rate Rider CGAAP Account 1576 (2016)",null,"per kWh",null,0,800,0,null,{"$f":"'Rates Summary'!$C$8","v":-1.0800000000000001E-2},800,-8.64,null,-8.64,"",null,0,800,0,null,8.64,-1,null,{"$f":"P42","v":0},800,0,null,0,"",null,{"$f":"W42","v":0},800,0,null,0,"",null,{"$f":"AD42","v":0},800,0,null,0,""]
["Disposition of Global Adjustment (2015)  \nApplicable to Non-RPP Customers",null,"per kWh",null,1.5599999999999999E-2,0,0,null,0,800,0,null,0,"",null,0,800,0,null,0,"",null,0,800,0,null,0,"",null,0,800,0,null,0,"",null,0,800,0,null,0,""]
["Disposition of Global Adjustment (2016) \nApplicable to Non-RPP Customers",null,"per kWh",null,0,800,0,null,{"$f":"'Rates Summary'!C6","v":2.0500000000000001E-2},0,0,null,0,"",null,0,800,0,null,0,"",null,0,800,0,null,0,"",null,0,800,0,null,0,"",null,0,800,0,null,0,""]
["Low Voltage Service Charge",null,"per kWh",null,6.9999999999999999E-4,800,{"$f":"F45*E45","v":0.55999999999999994},null,{"$f":"'Rates Summary'!C15","v":1.1999999999999999E-3},800,{"$f":"J45*I45","v":0.96},null,{"$f":"K45-G45","v":0.4},{"$f":"IF((G45)=0,\"\",(M45/G45))","v":0.71428571428571441},null,{"$f":"I45","v":1.1999999999999999E-3},800,{"$f":"Q45*P45","v":0.96},null,{"$f":"R45-K45","v":0},0,null,{"$f":"P45","v":1.1999999999999999E-3},800,{"$f":"X45*W45","v":0.96},null,{"$f":"Y45-R45","v":0},0,null,{"$f":"W45","v":1.1999999999999999E-3},800,{"$f":"AE45*AD45","v":0.96},null,{"$f":"AF45-Y45","v":0},0,null,{"$f":"AD45","v":1.1999999999999999E-3},800,{"$f":"AL45*AK45","v":0.96},null,{"$f":"AM45-AF45","v":0},0]
["Line Losses on Cost of Power",null,"per kWh",null,{"$f":"IF(ISBLANK(C16)=TRUE, 0, IF(C16=\"TOU\", 0.64*$E$56+0.18*$E$57+0.18*$E$58, IF(AND(C16=\"non-TOU\", F60>0), E60,E59)))","v":0.10766000000000001},{"$f":"$E$18*(1+$E$75)-$E$18","v":27.519999999999982},2.9628031999999984,null,{"$f":"E46","v":0.10766000000000001},{"$f":"$E$18*(1+$I$75)-$E$18","v":31.439999999999941},3.384830399999994,null,0.42202719999999561,0.14244186046511487,null,{"$f":"I46","v":0.10766000000000001},{"$f":"$E$18*(1+$I$75)-$E$18","v":31.439999999999941},{"$f":"Q46*P46","v":3.384830399999994},null,{"$f":"R46-K46","v":0},0,null,{"$f":"P46","v":0.10766000000000001},{"$f":"$E$18*(1+$I$75)-$E$18","v":31.439999999999941},{"$f":"X46*W46","v":3.384830399999994},null,{"$f":"Y46-R46","v":0},0,null,{"$f":"W46","v":0.10766000000000001},{"$f":"$E$18*(1+$I$75)-$E$18","v":31.439999999999941},{"$f":"AE46*AD46","v":3.384830399999994},null,{"$f":"AF46-Y46","v":0},0,null,{"$f":"AD46","v":0.10766000000000001},{"$f":"$E$18*(1+$I$75)-$E$18","v":31.439999999999941},{"$f":"AL46*AK46","v":3.384830399999994},null,{"$f":"AM46-AF46","v":0},0]
["Smart Meter Entity Charge",null,"Monthly",null,0.79,1,{"$f":"F47*E47","v":0.79},null,0.79,1,{"$f":"J47*I47","v":0.79},null,{"$f":"K47-G47","v":0},null,null,0.79,1,{"$f":"Q47*P47","v":0.79},null,{"$f":"R47-K47","v":0},0,null,0.79,1,{"$f":"X47*W47","v":0.79},null,{"$f":"Y47-R47","v":0},0,null,0,1,{"$f":"AE47*AD47","v":0},null,{"$f":"AF47-Y47","v":-0.79},-1,null,0,1,{"$f":"AL47*AK47","v":0},null,{"$f":"AM47-AF47","v":0},""]
["Sub-Total B - Distribution (includes Sub-Total A)",null,null,null,null,null,{"$f":"SUM(G40:G47)+G39","v":31.742803200000001},null,null,null,{"$f":"SUM(K40:K47)+K39","v":26.654830399999991},null,{"$f":"K48-G48","v":-5.08797280000001},{"$f":"IF((G48)=0,\"\",(M48/G48))","v":-0.16028744430485617},null,null,null,{"$f":"SUM(R40:R47)+R39","v":30.234830399999996},null,{"$f":"R48-K48","v":3.5800000000000054},0.13430961466556571,null,null,null,{"$f":"SUM(Y40:Y47)+Y39","v":30.374830399999993},null,{"$f":"Y48-R48","v":0.13999999999999702},4.6304212111603921E-3,null,null,null,{"$f":"SUM(AF40:AF47)+AF39","v":29.694830399999994},null,{"$f":"AF48-Y48","v":-0.67999999999999972},-2.2386956274165728E-2,null,null,null,{"$f":"SUM(AM40:AM47)+AM39","v":30.304830399999993},null,{"$f":"AM48-AF48","v":0.60999999999999943},2.0542296143237094E-2]
["RTSR - Network",null,"per kWh",null,6.7000000000000002E-3,{"$f":"$E$18*(1+$E$75)","v":827.52},{"$f":"F49*E49","v":5.544384},null,{"$f":"'Rates Summary'!C17","v":7.1000000000000004E-3},{"$f":"$E$18*(1+$I$75)","v":831.43999999999994},{"$f":"J49*I49","v":5.9032239999999998},null,0.35883999999999983,6.472134686197778E-2,null,{"$f":"I49","v":7.1000000000000004E-3},{"$f":"$E$18*(1+P75)","v":831.43999999999994},{"$f":"Q49*P49","v":5.9032239999999998},null,0,0,null,{"$f":"P49","v":7.1000000000000004E-3},{"$f":"$E$18*(1+W75)","v":831.43999999999994},{"$f":"X49*W49","v":5.9032239999999998},null,0,0,null,{"$f":"W49","v":7.1000000000000004E-3},{"$f":"$E$18*(1+AD75)","v":831.43999999999994},{"$f":"AE49*AD49","v":5.9032239999999998},null,0,0,null,{"$f":"AD49","v":7.1000000000000004E-3},{"$f":"$E$18*(1+AK75)","v":831.43999999999994},{"$f":"AL49*AK49","v":5.9032239999999998},null,0,0]
["RTSR - Line and Transformation Connection",null,"per kWh",null,5.1000000000000004E-3,{"$f":"F49","v":827.52},{"$f":"F50*E50","v":4.2203520000000001},null,{"$f":"'Rates Summary'!C18","v":5.5999999999999999E-3},{"$f":"J49","v":831.43999999999994},{"$f":"J50*I50","v":4.6560639999999998},null,0.43571199999999966,0.1032406775548579,null,{"$f":"I50","v":5.5999999999999999E-3},{"$f":"Q49","v":831.43999999999994},{"$f":"Q50*P50","v":4.6560639999999998},null,0,0,null,{"$f":"P50","v":5.5999999999999999E-3},{"$f":"X49","v":831.43999999999994},{"$f":"X50*W50","v":4.6560639999999998},null,0,0,null,{"$f":"W50","v":5.5999999999999999E-3},{"$f":"AE49","v":831.43999999999994},{"$f":"AE50*AD50","v":4.6560639999999998},null,0,0,null,{"$f":"AD50","v":5.5999999999999999E-3},{"$f":"AL49","v":831.43999999999994},{"$f":"AL50*AK50","v":4.6560639999999998},null,0,0]
["Sub-Total C - Delivery (including Sub-Total B)",null,null,null,null,null,{"$f":"SUM(G48:G50)","v":41.507539199999997},null,null,null,{"$f":"SUM(K48:K50)","v":37.21411839999999},null,-4.2934208000000069,-0.10343713172955354,null,null,null,{"$f":"SUM(R48:R50)","v":40.794118399999995},null,3.5800000000000054,9.6200048635305208E-2,null,null,null,{"$f":"SUM(Y48:Y50)","v":40.934118399999996},null,0.14000000000000057,3.4318672762395225E-3,null,null,null,{"$f":"SUM(AF48:AF50)","v":40.254118399999996},null,-0.67999999999999972,-1.661205924493539E-2,null,null,null,{"$f":"SUM(AM48:AM50)","v":40.864118399999995},null,0.60999999999999943,1.5153728966027971E-2]
["Wholesale Market Service Charge (WMSC)",null,"per kWh",null,4.4000000000000003E-3,{"$f":"F50","v":827.52},{"$f":"F52*E52","v":3.6410880000000003},null,{"$f":"'Rates Summary'!C19","v":4.4000000000000003E-3},{"$f":"J50","v":831.43999999999994},{"$f":"J52*I52","v":3.6583359999999998},null,1.7247999999999486E-2,4.7370456303169502E-3,null,{"$f":"I52","v":4.4000000000000003E-3},{"$f":"Q50","v":831.43999999999994},{"$f":"Q52*P52","v":3.6583359999999998},null,0,0,null,{"$f":"P52","v":4.4000000000000003E-3},{"$f":"X50","v":831.43999999999994},{"$f":"X52*W52","v":3.6583359999999998},null,0,0,null,{"$f":"W52","v":4.4000000000000003E-3},{"$f":"AE50","v":831.43999999999994},{"$f":"AE52*AD52","v":3.6583359999999998},null,0,0,null,{"$f":"AD52","v":4.4000000000000003E-3},{"$f":"AL50","v":831.43999999999994},{"$f":"AL52*AK52","v":3.6583359999999998},null,0,0]
["Rural and Remote Rate Protection (RRRP)",null,"per kWh",null,1.2999999999999999E-3,{"$f":"F50","v":827.52},1.0757759999999998,null,{"$f":"'Rates Summary'!C20","v":1.2999999999999999E-3},{"$f":"J50","v":831.43999999999994},1.0808719999999998,null,5.0959999999999894E-3,4.7370456303170829E-3,null,{"$f":"I53","v":1.2999999999999999E-3},{"$f":"Q50","v":831.43999999999994},1.0808719999999998,null,0,0,null,{"$f":"P53","v":1.2999999999999999E-3},{"$f":"X50","v":831.43999999999994},1.0808719999999998,null,0,0,null,{"$f":"W53","v":1.2999999999999999E-3},{"$f":"AE50","v":831.43999999999994},1.0808719999999998,null,0,0,null,{"$f":"AD53","v":1.2999999999999999E-3},{"$f":"AL50","v":831.43999999999994},1.0808719999999998,null,0,0]
["Standard Supply Service Charge",null,"Monthly",null,0.25,1,0.25,null,{"$f":"'Rates Summary'!C21","v":0.25},1,0.25,null,0,0,null,{"$f":"I54","v":0.25},1,0.25,null,0,0,null,{"$f":"P54","v":0.25},1,0.25,null,0,0,null,{"$f":"W54","v":0.25},1,0.25,null,0,0,null,{"$f":"AD54","v":0.25},1,0.25,null,0,0]
["Debt Retirement Charge (DRC)",null,"per kWh",null,7.0000000000000001E-3,{"$f":"E18","v":800},5.6000000000000005,null,0,{"$f":"E18","v":800},0,null,-5.6000000000000005,-1,null,0,{"$f":"J55","v":800},0,null,0,"",null,0,{"$f":"Q55","v":800},0,null,0,"",null,0,{"$f":"X55","v":800},0,null,0,"",null,0,{"$f":"AE55","v":800},0,null,0,""]
["TOU - Off Peak",null,"per kWh",null,8.3000000000000004E-2,{"$f":"0.64*$E$18","v":512},42.496000000000002,null,{"$f":"E56","v":8.3000000000000004E-2},{"$f":"F56","v":512},42.496000000000002,null,0,0,null,{"$f":"I56","v":8.3000000000000004E-2},{"$f":"J56","v":512},42.496000000000002,null,0,0,null,{"$f":"P56","v":8.3000000000000004E-2},{"$f":"Q56","v":512},42.496000000000002,null,0,0,null,{"$f":"W56","v":8.3000000000000004E-2},{"$f":"X56","v":512},42.496000000000002,null,0,0,null,{"$f":"AD56","v":8.3000000000000004E-2},{"$f":"AE56","v":512},42.496000000000002,null,0,0]
["TOU - Mid Peak",null,"per kWh",null,0.128,{"$f":"0.18*$E$18","v":144},18.432000000000002,null,{"$f":"E57","v":0.128},{"$f":"F57","v":144},18.432000000000002,null,0,0,null,{"$f":"I57","v":0.128},144,18.432000000000002,null,0,0,null,{"$f":"P57","v":0.128},144,18.432000000000002,null,0,0,null,{"$f":"W57","v":0.128},144,18.432000000000002,null,0,0,null,{"$f":"AD57","v":0.128},144,18.432000000000002,null,0,0]
["TOU - On Peak",null,"per kWh",null,0.17499999999999999,{"$f":"0.18*$E$18","v":144},25.2,null,0.17499999999999999,{"$f":"F58","v":144},25.2,null,0,0,null,0.17499999999999999,144,25.2,null,0,0,null,0.17499999999999999,144,25.2,null,0,0,null,0.17499999999999999,144,25.2,null,0,0,null,0.17499999999999999,144,25.2,null,0,0]
["Energy - RPP - Tier 1",null,"per kWh",null,9.9000000000000005E-2,{"$f":"IF(AND($S$1=1, E18>=600), 600, IF(AND($S$1=1, AND(E18<600, E18>=0)), E18, IF(AND($S$1=2, E18>=1000), 1000, IF(AND($S$1=2, AND(E18<1000, E18>=0)), E18))))","v":600},{"$f":"F59*E59","v":59.400000000000006},null,9.9000000000000005E-2,{"$f":"F59","v":600},{"$f":"J59*I59","v":59.400000000000006},null,0,0,null,9.9000000000000005E-2,600,{"$f":"Q59*P59","v":59.400000000000006},null,0,0,null,9.9000000000000005E-2,600,{"$f":"X59*W59","v":59.400000000000006},null,0,0,null,9.9000000000000005E-2,600,{"$f":"AE59*AD59","v":59.400000000000006},null,0,0,null,9.9000000000000005E-2,600,{"$f":"AL59*AK59","v":59.400000000000006},null,0,0]
["Energy - RPP - Tier 2",null,"per kWh",null,0.11600000000000001,{"$f":"IF(AND($S$1=1, E18>=600), E18-600, IF(AND($S$1=1, AND(E18<600, E18>=0)), 0, IF(AND($S$1=2, E18>=1000), E18-1000, IF(AND($S$1=2, AND(E18<1000, E18>=0)), 0))))","v":200},{"$f":"F60*E60","v":23.200000000000003},null,0.11600000000000001,{"$f":"F60","v":200},{"$f":"J60*I60","v":23.200000000000003},null,0,0,null,0.11600000000000001,200,{"$f":"Q60*P60","v":23.200000000000003},null,0,0,null,0.11600000000000001,200,{"$f":"X60*W60","v":23.200000000000003},null,0,0,null,0.11600000000000001,200,{"$f":"AE60*AD60","v":23.200000000000003},null,0,0,null,0.11600000000000001,200,{"$f":"AL60*AK60","v":23.200000000000003},null,0,0]
[null,null,null,null,null,null,null,null,null,null,null,null,null,null,null,null,null,null,null,null,"",null,null,null,null,null,null,"",null,null,null,null,null,null,"",null,null,null,null,null,null,""]
["Total Bill on TOU (before Taxes)",null,null,null,null,null,{"$f":"SUM(G52:G58,G51)","v":138.20240319999999},null,null,null,{"$f":"SUM(K52:K58,K51)","v":128.33132639999999},null,{"$f":"K62-G62","v":-9.8710767999999973},{"$f":"IF((G62)=0,\"\",(M62/G62))","v":-7.1424784022858429E-2},null,null,null,{"$f":"SUM(R52:R58,R51)","v":131.91132640000001},null,{"$f":"R62-K62","v":3.5800000000000125},2.7896540154516883E-2,null,null,null,{"$f":"SUM(Y52:Y58,Y51)","v":132.05132639999999},null,{"$f":"Y62-R62","v":0.13999999999998636},1.0613190225641333E-3,null,null,null,{"$f":"SUM(AF52:AF58,AF51)","v":131.37132639999999},null,{"$f":"AF62-Y62","v":-0.68000000000000682},-5.1495128336704601E-3,null,null,null,{"$f":"SUM(AM52:AM58,AM51)","v":131.9813264},null,{"$f":"AM62-AF62","v":0.61000000000001364},4.6433267952451281E-3]
["HST",null,null,null,0.13,null,{"$f":"G62*E63","v":17.966312416000001},null,0.13,null,{"$f":"K62*I63","v":16.683072431999999},null,-1.2832399840000015,-7.1424784022858512E-2,null,0.13,null,{"$f":"R62*P63","v":17.148472432000002},null,{"$f":"R63-K63","v":0.46540000000000248},2.7896540154516935E-2,null,0.13,null,{"$f":"Y62*W63","v":17.166672431999999},null,{"$f":"Y63-R63","v":1.8199999999996663E-2},1.061319022564042E-3,null,0.13,null,{"$f":"AF62*AD63","v":17.078272431999999},null,{"$f":"AF63-Y63","v":-8.8400000000000034E-2},-5.1495128336704107E-3,null,0.13,null,{"$f":"AM62*AK63","v":17.157572432000002},null,{"$f":"AM63-AF63","v":7.9300000000003479E-2},4.6433267952452279E-3]
["Total Bill (including HST)",null,null,null,null,null,{"$f":"G62+G63","v":156.16871561599999},null,null,null,{"$f":"K62+K63","v":145.01439883199998},null,-11.154316784000002,-7.1424784022858456E-2,null,null,null,{"$f":"R62+R63","v":149.05979883200001},null,4.0454000000000292,2.789654015451699E-2,null,null,null,{"$f":"Y62+Y63","v":149.21799883199998},null,0.15819999999996526,1.0613190225640036E-3,null,null,null,{"$f":"AF62+AF63","v":148.44959883199999},null,-0.76839999999998554,-5.1495128336703118E-3,null,null,null,{"$f":"AM62+AM63","v":149.138898832},null,0.68930000000000291,4.643326795245044E-3]
["Ontario Clean Energy Benefit 1",null,null,null,null,null,{"$f":"ROUND(-G64*10%,2)","v":-15.62},null,null,null,0,null,15.62,-1,null,null,null,0,null,0,"",null,null,null,0,null,0,"",null,null,null,0,null,0,"",null,null,null,0,null,0,""]
["Total Bill on TOU (including OCEB)",null,null,null,null,null,{"$f":"G64+G65","v":140.54871561599998},null,null,null,{"$f":"K64+K65","v":145.01439883199998},null,4.4656832160000022,3.1773205442879419E-2,null,null,null,{"$f":"R64+R65","v":149.05979883200001},null,4.0454000000000292,2.789654015451699E-2,null,null,null,{"$f":"Y64+Y65","v":149.21799883199998},null,0.15819999999996526,1.0613190225640036E-3,null,null,null,{"$f":"AF64+AF65","v":148.44959883199999},null,-0.76839999999998554,-5.1495128336703118E-3,null,null,null,{"$f":"AM64+AM65","v":149.138898832},null,0.68930000000000291,4.643326795245044E-3]
[null,null,null,null,null,null,null,null,null,null,null,null,null,null,null,null,null,null,null,null,"",null,null,null,null,null,null,"",null,null,null,null,null,null,"",null,null,null,null,null,null,""]
["Total Bill on RPP (before Taxes)",null,null,null,null,null,{"$f":"SUM(G59:G60,G52:G55,G51)","v":134.6744032},null,null,null,{"$f":"SUM(K59:K60,K52:K55,K51)","v":124.8033264},null,{"$f":"K68-G68","v":-9.8710767999999973},{"$f":"IF((G68)=0,\"\",(M68/G68))","v":-7.3295864436397948E-2},null,null,null,{"$f":"SUM(R59:R60,R52:R55,R51)","v":128.38332640000002},null,{"$f":"R68-K68","v":3.5800000000000125},2.8685132866779203E-2,null,null,null,{"$f":"SUM(Y59:Y60,Y52:Y55,Y51)","v":128.5233264},null,{"$f":"Y68-R68","v":0.13999999999998636},1.0904842858159994E-3,null,null,null,{"$f":"SUM(AF59:AF60,AF52:AF55,AF51)","v":127.84332640000001},null,{"$f":"AF68-Y68","v":-0.67999999999999261},-5.2908683508832103E-3,null,null,null,{"$f":"SUM(AM59:AM60,AM52:AM55,AM51)","v":128.45332640000001},null,{"$f":"AM68-AF68","v":0.60999999999999943},4.7714653332111626E-3]
["HST",null,null,null,0.13,null,{"$f":"G68*E69","v":17.507672416000002},null,0.13,null,{"$f":"K68*I69","v":16.224432432},null,-1.2832399840000015,{"$f":"IF((G69)=0,\"\",(M69/G69))","v":-7.3295864436398045E-2},null,0.13,null,{"$f":"R68*P69","v":16.689832432000003},null,{"$f":"R69-K69","v":0.46540000000000248},2.8685132866779255E-2,null,0.13,null,{"$f":"Y68*W69","v":16.708032432},null,{"$f":"Y69-R69","v":1.8199999999996663E-2},1.0904842858159057E-3,null,0.13,null,{"$f":"AF68*AD69","v":16.619632432000003},null,{"$f":"AF69-Y69","v":-8.8399999999996481E-2},-5.2908683508830576E-3,null,0.13,null,{"$f":"AM68*AK69","v":16.698932432000003},null,{"$f":"AM69-AF69","v":7.9299999999999926E-2},4.7714653332111617E-3]
["Total Bill (including HST)",null,null,null,null,null,{"$f":"G68+G69","v":152.18207561599999},null,null,null,{"$f":"K68+K69","v":141.02775883200002},null,-11.154316783999974,-7.3295864436397795E-2,null,null,null,{"$f":"R68+R69","v":145.07315883200002},null,4.0454000000000008,2.8685132866779105E-2,null,null,null,{"$f":"Y68+Y69","v":145.23135883200001},null,0.15819999999999368,1.0904842858160621E-3,null,null,null,{"$f":"AF68+AF69","v":144.46295883200003},null,-0.76839999999998554,-5.2908683508831678E-3,null,null,null,{"$f":"AM68+AM69","v":145.152258832},null,0.68929999999997449,4.77146533321099E-3]
["Ontario Clean Energy Benefit 1",null,null,null,null,null,{"$f":"ROUND(-G70*10%,2)","v":-15.22},null,null,null,0,null,15.22,-1,null,null,null,0,null,0,"",null,null,null,0,null,0,"",null,null,null,0,null,0,"",null,null,null,0,null,0,""]
["Total Bill on RPP (including OCEB)",null,null,null,null,null,{"$f":"SUM(G70:G71)","v":136.96207561599999},null,null,null,{"$f":"SUM(K70:K71)","v":141.02775883200002},null,4.0656832160000249,2.9684737163293028E-2,null,null,null,{"$f":"SUM(R70:R71)","v":145.07315883200002},null,4.0454000000000008,2.8685132866779105E-2,null,null,null,{"$f":"SUM(Y70:Y71)","v":145.23135883200001},null,0.15819999999999368,1.0904842858160621E-3,null,null,null,{"$f":"SUM(AF70:AF71)","v":144.46295883200003},null,-0.76839999999998554,-5.2908683508831678E-3,null,null,null,{"$f":"SUM(AM70:AM71)","v":145.152258832},null,0.68929999999997449,4.77146533321099E-3]
[null,null,null,null,null,null,null,null,null,null,null,null,null,null,null,null,null,null,null,null,null,null,null,null,null,null,null,"",null,null,null,null,null,null,"",null,null,null,null,null,null,""]
[]
["Loss Factor (%)",null,null,null,3.44E-2,null,null,null,3.9300000000000002E-2,null,null,null,null,null,null,3.9300000000000002E-2,null,null,null,null,null,null,3.9300000000000002E-2,null,null,null,null,null,null,3.9300000000000002E-2,null,null,null,null,null,null,3.9300000000000002E-2]
[]
["Distribution Excluding Rate Riders",null,null,null,"2015 Current Board-Approved",null,null,null,"2016 Test Year 1\nProposed",null,null,null,"Impact\n2016 TEST vs. \n2015 Bridge",null,null,"2017 Test Year 2\nProposed",null,null,null,"Impact\n2017 TEST 2 vs. \n2016 Test 1",null,null,"2018 Test Year 3\nProposed",null,null,null,"Impact\n2018 TEST 3 vs. \n2017 Test 2",null,null,"2019 Test Year 4\nProposed",null,null,null,"Impact\n2019 TEST 4 vs. \n2018 Test 3",null,null,"2020 Test Year 5 \nProposed",null,null,null,"Impact\n2020 TEST 5 vs. \n2019 Test 4"]
[null,null,"Charge Unit",null,"Rate","Volume","Charge",null,"Rate","Volume","Charge",null,"$ Change","% Change",null,"Rate","Volume","Charge",null,"$ Change","% Change",null,"Rate","Volume","Charge",null,"$ Change","% Change",null,"Rate","Volume","Charge",null,"$ Change","% Change",null,"Rate","Volume","Charge",null,"$ Change","% Change"]
[null,null,null,null,"($)",null,"($)",null,"($)",null,"($)",null,null,null,null,"($)",null,"($)",null,null,null,null,"($)",null,"($)",null,null,null,null,"($)",null,"($)",null,null,null,null,"($)",null,"($)"]
["Monthly Service Charge",null,"Monthly",null,12.56,1,{"$f":"F80*E80","v":12.56},null,{"$f":"'Rates Summary'!$E$28","v":13.98},1,{"$f":"J80*I80","v":13.98},null,{"$f":"K80-G80","v":1.42},{"$f":"IF((G80)=0,\"\",(M80/G80))","v":0.11305732484076432},null,{"$f":"'Rates Summary'!$F$28","v":18.54},1,{"$f":"Q80*P80","v":18.54},null,{"$f":"R80-K80","v":4.5599999999999987},{"$f":"IF((K80)=0,\"\",(T80/K80))","v":0.32618025751072949},null,{"$f":"'Rates Summary'!$G$28","v":21.88},1,{"$f":"X80*W80","v":21.88},null,{"$f":"Y80-R80","v":3.34},{"$f":"IF((R80)=0,\"\",(AA80/R80))","v":0.18015102481121897},null,{"$f":"'Rates Summary'!$H$28","v":25.35},1,{"$f":"AE80*AD80","v":25.35},null,{"$f":"AF80-Y80","v":3.4700000000000024},{"$f":"IF((Y80)=0,\"\",(AH80/Y80))","v":0.15859232175502755},null,{"$f":"'Rates Summary'!$I$28","v":25.96},1,{"$f":"AL80*AK80","v":25.96},null,{"$f":"AM80-AF80","v":0.60999999999999943},{"$f":"IF((AF80)=0,\"\",(AO80/AF80))","v":2.4063116370808654E-2}]
["Distribution Volumetric Rate",null,"per kWh",null,1.54E-2,{"$f":"$E$18","v":800},{"$f":"F81*E81","v":12.32},null,{"$f":"'Rates Summary'!$E$40","v":1.3899999999999999E-2},{"$f":"$E$18","v":800},{"$f":"J81*I81","v":11.12},null,{"$f":"K81-G81","v":-1.2000000000000011},{"$f":"IF((G81)=0,\"\",(M81/G81))","v":-9.7402597402597491E-2},null,{"$f":"'Rates Summary'!$F$40","v":8.2000000000000007E-3},{"$f":"$E$18","v":800},{"$f":"Q81*P81","v":6.5600000000000005},null,-4.5599999999999987,{"$f":"IF((K81)=0,\"\",(T81/K81))","v":-0.41007194244604306},null,{"$f":"'Rates Summary'!$G$40","v":4.1999999999999997E-3},{"$f":"$E$18","v":800},{"$f":"X81*W81","v":3.36},null,-3.2000000000000006,{"$f":"IF((R81)=0,\"\",(AA81/R81))","v":-0.48780487804878053},null,{"$f":"'Rates Summary'!$H$40","v":0},{"$f":"$E$18","v":800},{"$f":"AE81*AD81","v":0},null,-3.36,{"$f":"IF((Y81)=0,\"\",(AH81/Y81))","v":-1},null,{"$f":"'Rates Summary'!$I$40","v":0},{"$f":"$E$18","v":800},{"$f":"AL81*AK81","v":0},null,0,{"$f":"IF((AF81)=0,\"\",(AO81/AF81))","v":""}]
["\"Regular\" Distribution Only",null,null,null,null,null,{"$f":"SUM(G80:G81)","v":24.880000000000003},null,null,null,{"$f":"SUM(K80:K81)","v":25.1},null,0.21999999999999886,8.8424437299034903E-3,null,null,null,{"$f":"SUM(R80:R81)","v":25.1},null,0,0,null,null,null,{"$f":"SUM(Y80:Y81)","v":25.24},null,0.13999999999999702,5.5776892430277692E-3,null,null,null,{"$f":"SUM(AF80:AF81)","v":25.35},null,0.11000000000000298,4.3581616481776142E-3,null,null,null,{"$f":"SUM(AM80:AM81)","v":25.96},null,0.60999999999999943,2.4063116370808654E-2]
[]
[null,"Residential (kWh) - 100, 250, 500, 800, 1000, 1500, 2000"]
[null,"GS<50kW (kWh) - 1000, 2000, 5000, 10000, 15000"]
[null,"GS>50kW (kW) - 60, 100, 500, 1000"]
[null,"Large User - range appropriate for utility"]
[null,"Lighting Classes and USL - 150 kWh and 1 kW, range appropriate for utility."]
[]
[null,null,"Note that cells with the highlighted color shown to the left indicate quantities that are loss adjusted."]

{"sheet":"Bill Impact Resi 1000kWh","index":7,"n_rows":90,"n_cols":42,"rows_kept":90,"cut":false,"hidden":false,"merged":[[19,33,19,34],[2,0,2,9],[9,0,9,13],[10,0,10,13],[13,2,13,13],[19,4,19,6],[19,8,19,10],[19,12,19,13],[70,0,70,2],[19,36,19,38],[19,40,19,41],[20,2,21,2],[20,12,21,12],[20,13,21,13],[20,19,21,19],[20,20,21,20],[20,26,21,26],[20,27,21,27],[20,33,21,33],[19,15,19,17],[19,19,19,20],[19,22,19,24],[19,26,19,27],[19,29,19,31],[20,34,21,34],[20,40,21,40],[20,41,21,41],[64,0,64,2],[65,0,65,2],[76,36,76,38],[76,40,76,41],[71,0,71,2],[76,4,76,6],[76,8,76,10],[76,12,76,13],[76,15,76,17],[76,19,76,20],[76,22,76,24],[76,26,76,27],[76,29,76,31],[76,33,76,34],[77,27,78,27],[77,33,78,33],[77,34,78,34],[77,40,78,40],[77,41,78,41],[77,26,78,26],[77,2,78,2],[77,12,78,12],[77,13,78,13],[77,19,78,19],[77,20,78,20]]}
[null,null,null,null,null,null,null,null,null,null,null,null,"File Number:",{"$f":"EBNUMBER","v":"EB-2015-0083"},null,null,null,null,1]
[null,null,null,null,null,null,null,null,null,null,null,null,"Exhibit:",8]
[null,null,null,null,null,null,null,null,null,null,null,null,"Tab:",4]
[null,null,null,null,null,null,null,null,null,null,null,null,"Schedule:",3]
[null,null,null,null,null,null,null,null,null,null,null,null,"Page:"]
[]
[null,null,null,null,null,null,null,null,null,null,null,null,null,"Settlement"]
[null,null,null,null,null,null,null,null,null,null,null,null,"Date:","2015-10-20"]
[]
["Appendix 2-W"]
["Bill Impacts"]
[]
[]
["Customer Class:",null,"Residential",null,null,null,null,null,null,null,null,null,null,null,null,{"$f":"C14","v":"Residential"},null,null,null,null,null,null,null,null,null,null,null,null,null,null,null,null,null,null,null,null,{"$f":"P14","v":"Residential"}]
[]
["TOU / non-TOU:",null,"TOU"]
[]
[null,null,"Consumption",null,1000," kWh"]
[]
[null,null,null,null,"2015 Current Board-Approved",null,null,null,"2016 Test Year 1\nProposed",null,null,null,"Impact\n2016 TEST vs. \n2015 Bridge",null,null,"2017 Test Year 2\nProposed",null,null,null,"Impact\n2017 TEST 2 vs. \n2016 Test 1",null,null,"2018 Test Year 3\nProposed",null,null,null,"Impact\n2018 TEST 3 vs. \n2017 Test 2",null,null,"2019 Test Year 4\nProposed",null,null,null,"Impact\n2019 TEST 4 vs. \n2018 Test 3",null,null,"2020 Test Year 5 \nProposed",null,null,null,"Impact\n2020 TEST 5 vs. \n2019 Test 4"]
[null,null,"Charge Unit",null,"Rate","Volume","Charge",null,"Rate","Volume","Charge",null,"$ Change","% Change",null,"Rate","Volume","Charge",null,"$ Change","% Change",null,"Rate","Volume","Charge",null,"$ Change","% Change",null,"Rate","Volume","Charge",null,"$ Change","% Change",null,"Rate","Volume","Charge",null,"$ Change","% Change"]
[null,null,null,null,"($)",null,"($)",null,"($)",null,"($)",null,null,null,null,"($)",null,"($)",null,null,null,null,"($)",null,"($)",null,null,null,null,"($)",null,"($)",null,null,null,null,"($)",null,"($)"]
["Monthly Service Charge",null,"Monthly",null,12.56,1,{"$f":"F23*E23","v":12.56},null,{"$f":"'Rates Summary'!$E$28","v":13.98},1,{"$f":"J23*I23","v":13.98},null,{"$f":"K23-G23","v":1.42},{"$f":"IF((G23)=0,\"\",(M23/G23))","v":0.11305732484076432},null,{"$f":"'Rates Summary'!$F$28","v":18.54},1,{"$f":"Q23*P23","v":18.54},null,{"$f":"R23-K23","v":4.5599999999999987},{"$f":"IF((K23)=0,\"\",(T23/K23))","v":0.32618025751072949},null,{"$f":"'Rates Summary'!$G$28","v":21.88},1,{"$f":"X23*W23","v":21.88},null,{"$f":"Y23-R23","v":3.34},{"$f":"IF((R23)=0,\"\",(AA23/R23))","v":0.18015102481121897},null,{"$f":"'Rates Summary'!$H$28","v":25.35},1,{"$f":"AE23*AD23","v":25.35},null,{"$f":"AF23-Y23","v":3.4700000000000024},{"$f":"IF((Y23)=0,\"\",(AH23/Y23))","v":0.15859232175502755},null,{"$f":"'Rates Summary'!$I$28","v":25.96},1,{"$f":"AL23*AK23","v":25.96},null,{"$f":"AM23-AF23","v":0.60999999999999943},{"$f":"IF((AF23)=0,\"\",(AO23/AF23))","v":2.4063116370808654E-2}]
["Smart Meter (SMIRR) Rate Rider",null,"Monthly",null,2.63,1,{"$f":"F24*E24","v":2.63},null,0,1,{"$f":"J24*I24","v":0},null,{"$f":"K24-G24","v":-2.63},{"$f":"IF((G24)=0,\"\",(M24/G24))","v":-1},null,0,1,{"$f":"Q24*P24","v":0},null,0,{"$f":"IF((K24)=0,\"\",(T24/K24))","v":""},null,0,1,{"$f":"X24*W24","v":0},null,0,{"$f":"IF((R24)=0,\"\",(AA24/R24))","v":""},null,0,1,{"$f":"AE24*AD24","v":0},null,0,{"$f":"IF((Y24)=0,\"\",(AH24/Y24))","v":""},null,0,1,{"$f":"AL24*AK24","v":0},null,0,{"$f":"IF((AF24)=0,\"\",(AO24/AF24))","v":""}]
["Rate Rider Smart Meters Capital (2016)",null,"Monthly",null,0,1,0,null,{"$f":"'Rates Summary'!C10","v":0.25},1,{"$f":"J25*I25","v":0.25},null,{"$f":"K25-G25","v":0.25},null,null,0,1,{"$f":"Q25*P25","v":0},null,-0.25,-1,null,0,1,{"$f":"X25*W25","v":0},null,0,"",null,0,1,{"$f":"AE25*AD25","v":0},null,0,"",null,0,1,{"$f":"AL25*AK25","v":0},null,0,""]
["Rate Rider Recovery of Stranded Meters",null,"Monthly",null,0,1,0,null,{"$f":"'Rates Summary'!$C11","v":3.69},1,3.69,null,3.69,null,null,0,1,0,null,-3.69,-1,null,0,1,0,null,0,"",null,0,1,0,null,0,"",null,0,1,0,null,0,""]
[null,null,null,null,null,1,0,null,null,1,0,null,0,{"$f":"IF((G27)=0,\"\",(M27/G27))","v":""},null,null,1,0,null,0,"",null,null,1,0,null,0,"",null,null,1,0,null,0,"",null,null,1,0,null,0,""]
[null,null,null,null,null,1,0,null,null,1,0,null,0,"",null,null,1,0,null,0,"",null,null,1,0,null,0,"",null,null,1,0,null,0,"",null,null,1,0,null,0,""]
["Distribution Volumetric Rate",null,"per kWh",null,1.54E-2,{"$f":"$E$18","v":1000},{"$f":"F29*E29","v":15.4},null,{"$f":"'Rates Summary'!$E$40","v":1.3899999999999999E-2},{"$f":"$E$18","v":1000},13.899999999999999,null,-1.5000000000000018,-9.7402597402597518E-2,null,{"$f":"'Rates Summary'!$F$40","v":8.2000000000000007E-3},{"$f":"$E$18","v":1000},8.2000000000000011,null,-5.6999999999999975,-0.410071942446043,null,{"$f":"'Rates Summary'!$G$40","v":4.1999999999999997E-3},{"$f":"$E$18","v":1000},4.2,null,-4.0000000000000009,-0.48780487804878053,null,{"$f":"'Rates Summary'!$H$40","v":0},{"$f":"$E$18","v":1000},0,null,-4.2,-1,null,{"$f":"'Rates Summary'!$I$40","v":0},{"$f":"$E$18","v":1000},0,null,0,""]
["Rate Rider Tax Change (2015)",null,"per kWh",null,-1E-4,{"$f":"$E$18","v":1000},{"$f":"F30*E30","v":-0.1},null,0,{"$f":"$E$18","v":1000},0,null,0.1,{"$f":"IF((G30)=0,\"\",(M30/G30))","v":-1},null,0,{"$f":"$E$18","v":1000},0,null,0,"",null,0,{"$f":"$E$18","v":1000},0,null,0,"",null,0,{"$f":"$E$18","v":1000},0,null,0,"",null,0,{"$f":"$E$18","v":1000},0,null,0,""]
["LRAM VA (2016)",null,"per kWh",null,0,{"$f":"$E$18","v":1000},0,null,{"$f":"'Rates Summary'!C7","v":2.9999999999999997E-4},1000,0.3,null,0.3,null,null,0,1000,0,null,-0.3,{"$f":"IF((K31)=0,\"\",(T31/K31))","v":-1},null,0,1000,0,null,0,"",null,0,1000,0,null,0,"",null,0,1000,0,null,0,""]
["Rate Rider Incremental Capital 2012 True-Up (2016)",null,"per kWh",null,0,{"$f":"$E$18","v":1000},0,null,{"$f":"'Rates Summary'!C9","v":4.0000000000000002E-4},1000,0.4,null,0.4,null,null,0,1000,0,null,-0.4,{"$f":"IF((K32)=0,\"\",(T32/K32))","v":-1},null,0,1000,0,null,0,"",null,0,1000,0,null,0,"",null,0,1000,0,null,0,""]
[null,null,"per kWh",null,0,{"$f":"$E$19","v":0},0,null,null,{"$f":"$E$19","v":0},0,null,0,{"$f":"IF((G33)=0,\"\",(M33/G33))","v":""},null,null,{"$f":"$E$19","v":0},0,null,0,"",null,null,{"$f":"$E$19","v":0},0,null,0,"",null,null,{"$f":"$E$19","v":0},0,null,0,"",null,null,{"$f":"$E$19","v":0},0,null,0,""]
[null,null,null,null,0,1000,0,null,null,1000,0,null,0,"",null,null,1000,0,null,0,"",null,null,1000,0,null,0,"",null,null,1000,0,null,0,"",null,null,1000,0,null,0,""]
[null,null,null,null,null,1000,0,null,null,1000,0,null,0,"",null,null,1000,0,null,0,"",null,null,1000,0,null,0,"",null,null,1000,0,null,0,"",null,null,1000,0,null,0,""]
[null,null,null,null,null,1000,0,null,null,1000,0,null,0,"",null,null,1000,0,null,0,"",null,null,1000,0,null,0,"",null,null,1000,0,null,0,"",null,null,1000,0,null,0,""]
[null,null,null,null,null,1000,0,null,null,1000,0,null,0,"",null,null,1000,0,null,0,"",null,null,1000,0,null,0,"",null,null,1000,0,null,0,"",null,null,1000,0,null,0,""]
[null,null,null,null,null,1000,0,null,null,1000,0,null,0,"",null,null,1000,0,null,0,"",null,null,1000,0,null,0,"",null,null,1000,0,null,0,"",null,null,1000,0,null,0,""]
["Sub-Total A (excluding pass through)",null,null,null,null,null,{"$f":"SUM(G23:G38)","v":30.490000000000002},null,null,null,{"$f":"SUM(K23:K38)","v":32.519999999999996},null,{"$f":"K39-G39","v":2.029999999999994},6.6579206297146407E-2,null,null,null,{"$f":"SUM(R23:R38)","v":26.740000000000002},null,-5.779999999999994,-0.17773677736777352,null,null,null,{"$f":"SUM(Y23:Y38)","v":26.08},null,-0.66000000000000369,-2.4682124158564085E-2,null,null,null,{"$f":"SUM(AF23:AF38)","v":25.35},null,-0.72999999999999687,-2.7990797546012153E-2,null,null,null,{"$f":"SUM(AM23:AM38)","v":25.96},null,0.60999999999999943,2.4063116370808654E-2]
["Deferral/Variance Account Disposition Rate Rider (2016)",null,"per kWh",null,0,{"$f":"$E$18","v":1000},{"$f":"F40*E40","v":0},null,{"$f":"'Rates Summary'!C5","v":6.9999999999999999E-4},{"$f":"$E$18","v":1000},{"$f":"J40*I40","v":0.7},null,{"$f":"K40-G40","v":0.7},{"$f":"IF((G40)=0,\"\",(M40/G40))","v":""},null,0,{"$f":"$E$18","v":1000},{"$f":"Q40*P40","v":0},null,-0.7,-1,null,0,{"$f":"$E$18","v":1000},{"$f":"X40*W40","v":0},null,0,"",null,0,{"$f":"$E$18","v":1000},{"$f":"AE40*AD40","v":0},null,0,"",null,0,{"$f":"$E$18","v":1000},{"$f":"AL40*AK40","v":0},null,0,""]
[null,null,null,null,null,{"$f":"$E$18","v":1000},{"$f":"F41*E41","v":0},null,{"$f":"E41","v":0},{"$f":"$E$18","v":1000},{"$f":"J41*I41","v":0},null,{"$f":"K41-G41","v":0},{"$f":"IF((G41)=0,\"\",(M41/G41))","v":""},null,null,{"$f":"$E$18","v":1000},{"$f":"Q41*P41","v":0},null,0,"",null,null,{"$f":"$E$18","v":1000},{"$f":"X41*W41","v":0},null,0,"",null,null,{"$f":"$E$18","v":1000},{"$f":"AE41*AD41","v":0},null,0,"",null,null,{"$f":"$E$18","v":1000},{"$f":"AL41*AK41","v":0},null,0,""]
["Rate Rider CGAAP Account 1576 (2016)",null,"per kWh",null,0,1000,0,null,{"$f":"'Rates Summary'!$C$8","v":-1.0800000000000001E-2},1000,-10.8,null,-10.8,"",null,0,1000,0,null,10.8,-1,null,{"$f":"P42","v":0},1000,0,null,0,"",null,{"$f":"W42","v":0},1000,0,null,0,"",null,{"$f":"AD42","v":0},1000,0,null,0,""]
["Disposition of Global Adjustment (2015)  \nApplicable to Non-RPP Customers",null,"per kWh",null,1.5599999999999999E-2,0,0,null,0,1000,0,null,0,"",null,0,1000,0,null,0,"",null,0,1000,0,null,0,"",null,0,1000,0,null,0,"",null,0,1000,0,null,0,""]
["Disposition of Global Adjustment (2016) \nApplicable to Non-RPP Customers",null,"per kWh",null,0,1000,0,null,{"$f":"'Rates Summary'!C6","v":2.0500000000000001E-2},0,0,null,0,"",null,0,1000,0,null,0,"",null,0,1000,0,null,0,"",null,0,1000,0,null,0,"",null,0,1000,0,null,0,""]
["Low Voltage Service Charge",null,"per kWh",null,6.9999999999999999E-4,1000,{"$f":"F45*E45","v":0.7},null,{"$f":"'Rates Summary'!C15","v":1.1999999999999999E-3},1000,{"$f":"J45*I45","v":1.2},null,{"$f":"K45-G45","v":0.5},{"$f":"IF((G45)=0,\"\",(M45/G45))","v":0.7142857142857143},null,{"$f":"I45","v":1.1999999999999999E-3},1000,{"$f":"Q45*P45","v":1.2},null,{"$f":"R45-K45","v":0},0,null,{"$f":"P45","v":1.1999999999999999E-3},1000,{"$f":"X45*W45","v":1.2},null,{"$f":"Y45-R45","v":0},0,null,{"$f":"W45","v":1.1999999999999999E-3},1000,{"$f":"AE45*AD45","v":1.2},null,{"$f":"AF45-Y45","v":0},0,null,{"$f":"AD45","v":1.1999999999999999E-3},1000,{"$f":"AL45*AK45","v":1.2},null,{"$f":"AM45-AF45","v":0},0]
["Line Losses on Cost of Power",null,"per kWh",null,{"$f":"IF(ISBLANK(C16)=TRUE, 0, IF(C16=\"TOU\", 0.64*$E$56+0.18*$E$57+0.18*$E$58, IF(AND(C16=\"non-TOU\", F60>0), E60,E59)))","v":0.10766000000000001},{"$f":"$E$18*(1+$E$75)-$E$18","v":34.400000000000091},3.7035040000000099,null,{"$f":"E46","v":0.10766000000000001},{"$f":"$E$18*(1+$I$75)-$E$18","v":39.299999999999955},4.2310379999999954,null,0.52753399999998551,0.14244186046511198,null,{"$f":"I46","v":0.10766000000000001},{"$f":"$E$18*(1+$I$75)-$E$18","v":39.299999999999955},{"$f":"Q46*P46","v":4.2310379999999954},null,{"$f":"R46-K46","v":0},0,null,{"$f":"P46","v":0.10766000000000001},{"$f":"$E$18*(1+$I$75)-$E$18","v":39.299999999999955},{"$f":"X46*W46","v":4.2310379999999954},null,{"$f":"Y46-R46","v":0},0,null,{"$f":"W46","v":0.10766000000000001},{"$f":"$E$18*(1+$I$75)-$E$18","v":39.299999999999955},{"$f":"AE46*AD46","v":4.2310379999999954},null,{"$f":"AF46-Y46","v":0},0,null,{"$f":"AD46","v":0.10766000000000001},{"$f":"$E$18*(1+$I$75)-$E$18","v":39.299999999999955},{"$f":"AL46*AK46","v":4.2310379999999954},null,{"$f":"AM46-AF46","v":0},0]
["Smart Meter Entity Charge",null,"Monthly",null,0.79,1,{"$f":"F47*E47","v":0.79},null,0.79,1,{"$f":"J47*I47","v":0.79},null,{"$f":"K47-G47","v":0},null,null,0.79,1,{"$f":"Q47*P47","v":0.79},null,{"$f":"R47-K47","v":0},0,null,0.79,1,{"$f":"X47*W47","v":0.79},null,{"$f":"Y47-R47","v":0},0,null,0,1,{"$f":"AE47*AD47","v":0},null,{"$f":"AF47-Y47","v":-0.79},-1,null,0,1,{"$f":"AL47*AK47","v":0},null,{"$f":"AM47-AF47","v":0},""]
["Sub-Total B - Distribution (includes Sub-Total A)",null,null,null,null,null,{"$f":"SUM(G40:G47)+G39","v":35.683504000000013},null,null,null,{"$f":"SUM(K40:K47)+K39","v":28.641037999999988},null,{"$f":"K48-G48","v":-7.0424660000000259},{"$f":"IF((G48)=0,\"\",(M48/G48))","v":-0.19735914948262995},null,null,null,{"$f":"SUM(R40:R47)+R39","v":32.961037999999995},null,{"$f":"R48-K48","v":4.3200000000000074},0.1508325222011859,null,null,null,{"$f":"SUM(Y40:Y47)+Y39","v":32.301037999999991},null,{"$f":"Y48-R48","v":-0.66000000000000369},-2.0023641245764282E-2,null,null,null,{"$f":"SUM(AF40:AF47)+AF39","v":30.781037999999995},null,{"$f":"AF48-Y48","v":-1.519999999999996},-4.7057311285166638E-2,null,null,null,{"$f":"SUM(AM40:AM47)+AM39","v":31.391037999999995},null,{"$f":"AM48-AF48","v":0.60999999999999943},1.9817395371786992E-2]
["RTSR - Network",null,"per kWh",null,6.7000000000000002E-3,{"$f":"$E$18*(1+$E$75)","v":1034.4000000000001},{"$f":"F49*E49","v":6.9304800000000011},null,{"$f":"'Rates Summary'!C17","v":7.1000000000000004E-3},{"$f":"$E$18*(1+$I$75)","v":1039.3},{"$f":"J49*I49","v":7.3790300000000002},null,0.44854999999999912,6.4721346861977683E-2,null,{"$f":"I49","v":7.1000000000000004E-3},{"$f":"$E$18*(1+P75)","v":1039.3},{"$f":"Q49*P49","v":7.3790300000000002},null,0,0,null,{"$f":"P49","v":7.1000000000000004E-3},{"$f":"$E$18*(1+W75)","v":1039.3},{"$f":"X49*W49","v":7.3790300000000002},null,0,0,null,{"$f":"W49","v":7.1000000000000004E-3},{"$f":"$E$18*(1+AD75)","v":1039.3},{"$f":"AE49*AD49","v":7.3790300000000002},null,0,0,null,{"$f":"AD49","v":7.1000000000000004E-3},{"$f":"$E$18*(1+AK75)","v":1039.3},{"$f":"AL49*AK49","v":7.3790300000000002},null,0,0]
["RTSR - Line and Transformation Connection",null,"per kWh",null,5.1000000000000004E-3,{"$f":"F49","v":1034.4000000000001},{"$f":"F50*E50","v":5.2754400000000006},null,{"$f":"'Rates Summary'!C18","v":5.5999999999999999E-3},{"$f":"J49","v":1039.3},{"$f":"J50*I50","v":5.8200799999999999},null,0.54463999999999935,0.10324067755485784,null,{"$f":"I50","v":5.5999999999999999E-3},{"$f":"Q49","v":1039.3},{"$f":"Q50*P50","v":5.8200799999999999},null,0,0,null,{"$f":"P50","v":5.5999999999999999E-3},{"$f":"X49","v":1039.3},{"$f":"X50*W50","v":5.8200799999999999},null,0,0,null,{"$f":"W50","v":5.5999999999999999E-3},{"$f":"AE49","v":1039.3},{"$f":"AE50*AD50","v":5.8200799999999999},null,0,0,null,{"$f":"AD50","v":5.5999999999999999E-3},{"$f":"AL49","v":1039.3},{"$f":"AL50*AK50","v":5.8200799999999999},null,0,0]
["Sub-Total C - Delivery (including Sub-Total B)",null,null,null,null,null,{"$f":"SUM(G48:G50)","v":47.88942400000002},null,null,null,{"$f":"SUM(K48:K50)","v":41.840147999999985},null,-6.0492760000000345,-0.12631757692470955,null,null,null,{"$f":"SUM(R48:R50)","v":46.160147999999992},null,4.3200000000000074,0.10325011278640814,null,null,null,{"$f":"SUM(Y48:Y50)","v":45.500147999999989},null,-0.66000000000000369,-1.4298047744561041E-2,null,null,null,{"$f":"SUM(AF48:AF50)","v":43.980147999999993},null,-1.519999999999996,-3.3406484743741853E-2,null,null,null,{"$f":"SUM(AM48:AM50)","v":44.590147999999992},null,0.60999999999999943,1.3869894207722984E-2]
["Wholesale Market Service Charge (WMSC)",null,"per kWh",null,4.4000000000000003E-3,{"$f":"F50","v":1034.4000000000001},{"$f":"F52*E52","v":4.5513600000000007},null,{"$f":"'Rates Summary'!C19","v":4.4000000000000003E-3},{"$f":"J50","v":1039.3},{"$f":"J52*I52","v":4.5729199999999999},null,2.1559999999999135E-2,4.7370456303169016E-3,null,{"$f":"I52","v":4.4000000000000003E-3},{"$f":"Q50","v":1039.3},{"$f":"Q52*P52","v":4.5729199999999999},null,0,0,null,{"$f":"P52","v":4.4000000000000003E-3},{"$f":"X50","v":1039.3},{"$f":"X52*W52","v":4.5729199999999999},null,0,0,null,{"$f":"W52","v":4.4000000000000003E-3},{"$f":"AE50","v":1039.3},{"$f":"AE52*AD52","v":4.5729199999999999},null,0,0,null,{"$f":"AD52","v":4.4000000000000003E-3},{"$f":"AL50","v":1039.3},{"$f":"AL52*AK52","v":4.5729199999999999},null,0,0]
["Rural and Remote Rate Protection (RRRP)",null,"per kWh",null,1.2999999999999999E-3,{"$f":"F50","v":1034.4000000000001},1.3447200000000001,null,{"$f":"'Rates Summary'!C20","v":1.2999999999999999E-3},{"$f":"J50","v":1039.3},1.3510899999999999,null,6.3699999999997647E-3,4.7370456303169163E-3,null,{"$f":"I53","v":1.2999999999999999E-3},{"$f":"Q50","v":1039.3},1.3510899999999999,null,0,0,null,{"$f":"P53","v":1.2999999999999999E-3},{"$f":"X50","v":1039.3},1.3510899999999999,null,0,0,null,{"$f":"W53","v":1.2999999999999999E-3},{"$f":"AE50","v":1039.3},1.3510899999999999,null,0,0,null,{"$f":"AD53","v":1.2999999999999999E-3},{"$f":"AL50","v":1039.3},1.3510899999999999,null,0,0]
["Standard Supply Service Charge",null,"Monthly",null,0.25,1,0.25,null,{"$f":"'Rates Summary'!C21","v":0.25},1,0.25,null,0,0,null,{"$f":"I54","v":0.25},1,0.25,null,0,0,null,{"$f":"P54","v":0.25},1,0.25,null,0,0,null,{"$f":"W54","v":0.25},1,0.25,null,0,0,null,{"$f":"AD54","v":0.25},1,0.25,null,0,0]
["Debt Retirement Charge (DRC)",null,"per kWh",null,7.0000000000000001E-3,{"$f":"E18","v":1000},7,null,0,{"$f":"E18","v":1000},0,null,-7,-1,null,0,{"$f":"J55","v":1000},0,null,0,"",null,0,{"$f":"Q55","v":1000},0,null,0,"",null,0,{"$f":"X55","v":1000},0,null,0,"",null,0,{"$f":"AE55","v":1000},0,null,0,""]
["TOU - Off Peak",null,"per kWh",null,8.3000000000000004E-2,{"$f":"0.64*$E$18","v":640},53.120000000000005,null,{"$f":"E56","v":8.3000000000000004E-2},{"$f":"F56","v":640},53.120000000000005,null,0,0,null,{"$f":"I56","v":8.3000000000000004E-2},{"$f":"J56","v":640},53.120000000000005,null,0,0,null,{"$f":"P56","v":8.3000000000000004E-2},{"$f":"Q56","v":640},53.120000000000005,null,0,0,null,{"$f":"W56","v":8.3000000000000004E-2},{"$f":"X56","v":640},53.120000000000005,null,0,0,null,{"$f":"AD56","v":8.3000000000000004E-2},{"$f":"AE56","v":640},53.120000000000005,null,0,0]
["TOU - Mid Peak",null,"per kWh",null,0.128,{"$f":"0.18*$E$18","v":180},23.04,null,{"$f":"E57","v":0.128},{"$f":"F57","v":180},23.04,null,0,0,null,{"$f":"I57","v":0.128},180,23.04,null,0,0,null,{"$f":"P57","v":0.128},180,23.04,null,0,0,null,{"$f":"W57","v":0.128},180,23.04,null,0,0,null,{"$f":"AD57","v":0.128},180,23.04,null,0,0]
["TOU - On Peak",null,"per kWh",null,0.17499999999999999,{"$f":"0.18*$E$18","v":180},31.499999999999996,null,0.17499999999999999,{"$f":"F58","v":180},31.499999999999996,null,0,0,null,0.17499999999999999,180,31.499999999999996,null,0,0,null,0.17499999999999999,180,31.499999999999996,null,0,0,null,0.17499999999999999,180,31.499999999999996,null,0,0,null,0.17499999999999999,180,31.499999999999996,null,0,0]
["Energy - RPP - Tier 1",null,"per kWh",null,9.9000000000000005E-2,{"$f":"IF(AND($S$1=1, E18>=600), 600, IF(AND($S$1=1, AND(E18<600, E18>=0)), E18, IF(AND($S$1=2, E18>=1000), 1000, IF(AND($S$1=2, AND(E18<1000, E18>=0)), E18))))","v":600},{"$f":"F59*E59","v":59.400000000000006},null,9.9000000000000005E-2,{"$f":"F59","v":600},{"$f":"J59*I59","v":59.400000000000006},null,0,0,null,9.9000000000000005E-2,600,{"$f":"Q59*P59","v":59.400000000000006},null,0,0,null,9.9000000000000005E-2,600,{"$f":"X59*W59","v":59.400000000000006},null,0,0,null,9.9000000000000005E-2,600,{"$f":"AE59*AD59","v":59.400000000000006},null,0,0,null,9.9000000000000005E-2,600,{"$f":"AL59*AK59","v":59.400000000000006},null,0,0]
["Energy - RPP - Tier 2",null,"per kWh",null,0.11600000000000001,{"$f":"IF(AND($S$1=1, E18>=600), E18-600, IF(AND($S$1=1, AND(E18<600, E18>=0)), 0, IF(AND($S$1=2, E18>=1000), E18-1000, IF(AND($S$1=2, AND(E18<1000, E18>=0)), 0))))","v":400},{"$f":"F60*E60","v":46.400000000000006},null,0.11600000000000001,{"$f":"F60","v":400},{"$f":"J60*I60","v":46.400000000000006},null,0,0,null,0.11600000000000001,400,{"$f":"Q60*P60","v":46.400000000000006},null,0,0,null,0.11600000000000001,400,{"$f":"X60*W60","v":46.400000000000006},null,0,0,null,0.11600000000000001,400,{"$f":"AE60*AD60","v":46.400000000000006},null,0,0,null,0.11600000000000001,400,{"$f":"AL60*AK60","v":46.400000000000006},null,0,0]
[null,null,null,null,null,null,null,null,null,null,null,null,null,null,null,null,null,null,null,null,"",null,null,null,null,null,null,"",null,null,null,null,null,null,"",null,null,null,null,null,null,""]
["Total Bill on TOU (before Taxes)",null,null,null,null,null,{"$f":"SUM(G52:G58,G51)","v":168.69550400000003},null,null,null,{"$f":"SUM(K52:K58,K51)","v":155.67415799999998},null,{"$f":"K62-G62","v":-13.021346000000051},{"$f":"IF((G62)=0,\"\",(M62/G62))","v":-7.7188459035636467E-2},null,null,null,{"$f":"SUM(R52:R58,R51)","v":159.994158},null,{"$f":"R62-K62","v":4.3200000000000216},2.7750270536231338E-2,null,null,null,{"$f":"SUM(Y52:Y58,Y51)","v":159.334158},null,{"$f":"Y62-R62","v":-0.65999999999999659},-4.1251506195619757E-3,null,null,null,{"$f":"SUM(AF52:AF58,AF51)","v":157.81415799999999},null,{"$f":"AF62-Y62","v":-1.5200000000000102},-9.539699579044502E-3,null,null,null,{"$f":"SUM(AM52:AM58,AM51)","v":158.42415800000001},null,{"$f":"AM62-AF62","v":0.61000000000001364},3.8653059252137167E-3]
["HST",null,null,null,0.13,null,{"$f":"G62*E63","v":21.930415520000004},null,0.13,null,{"$f":"K62*I63","v":20.237640539999997},null,-1.6927749800000065,-7.7188459035636467E-2,null,0.13,null,{"$f":"R62*P63","v":20.79924054},null,{"$f":"R63-K63","v":0.5616000000000021},2.7750270536231303E-2,null,0.13,null,{"$f":"Y62*W63","v":20.713440540000001},null,{"$f":"Y63-R63","v":-8.5799999999998988E-2},-4.1251506195619479E-3,null,0.13,null,{"$f":"AF62*AD63","v":20.515840539999999},null,{"$f":"AF63-Y63","v":-0.19760000000000133},-9.539699579044502E-3,null,0.13,null,{"$f":"AM62*AK63","v":20.595140540000003},null,{"$f":"AM63-AF63","v":7.9300000000003479E-2},3.8653059252138E-3]
["Total Bill (including HST)",null,null,null,null,null,{"$f":"G62+G63","v":190.62591952000002},null,null,null,{"$f":"K62+K63","v":175.91179853999998},null,-14.714120980000047,-7.7188459035636425E-2,null,null,null,{"$f":"R62+R63","v":180.79339854},null,4.8816000000000201,2.7750270536231313E-2,null,null,null,{"$f":"Y62+Y63","v":180.04759854},null,-0.74580000000000268,-4.1251506195620112E-3,null,null,null,{"$f":"AF62+AF63","v":178.32999853999999},null,-1.7176000000000045,-9.5396995790444639E-3,null,null,null,{"$f":"AM62+AM63","v":179.01929854000002},null,0.68930000000003133,3.865305925213806E-3]
["Ontario Clean Energy Benefit 1",null,null,null,null,null,{"$f":"ROUND(-G64*10%,2)","v":-19.059999999999999},null,null,null,0,null,19.059999999999999,-1,null,null,null,0,null,0,"",null,null,null,0,null,0,"",null,null,null,0,null,0,"",null,null,null,0,null,0,""]
["Total Bill on TOU (including OCEB)",null,null,null,null,null,{"$f":"G64+G65","v":171.56591952000002},null,null,null,{"$f":"K64+K65","v":175.91179853999998},null,4.3458790199999555,2.5330666091253291E-2,null,null,null,{"$f":"R64+R65","v":180.79339854},null,4.8816000000000201,2.7750270536231313E-2,null,null,null,{"$f":"Y64+Y65","v":180.04759854},null,-0.74580000000000268,-4.1251506195620112E-3,null,null,null,{"$f":"AF64+AF65","v":178.32999853999999},null,-1.7176000000000045,-9.5396995790444639E-3,null,null,null,{"$f":"AM64+AM65","v":179.01929854000002},null,0.68930000000003133,3.865305925213806E-3]
[null,null,null,null,null,null,null,null,null,null,null,null,null,null,null,null,null,null,null,null,"",null,null,null,null,null,null,"",null,null,null,null,null,null,"",null,null,null,null,null,null,""]
["Total Bill on RPP (before Taxes)",null,null,null,null,null,{"$f":"SUM(G59:G60,G52:G55,G51)","v":166.83550400000001},null,null,null,{"$f":"SUM(K59:K60,K52:K55,K51)","v":153.81415799999999},null,{"$f":"K68-G68","v":-13.021346000000023},{"$f":"IF((G68)=0,\"\",(M68/G68))","v":-7.8049010479208439E-2},null,null,null,{"$f":"SUM(R59:R60,R52:R55,R51)","v":158.13415800000001},null,{"$f":"R68-K68","v":4.3200000000000216},2.808584109663053E-2,null,null,null,{"$f":"SUM(Y59:Y60,Y52:Y55,Y51)","v":157.47415799999999},null,{"$f":"Y68-R68","v":-0.66000000000002501},-4.1736713202724044E-3,null,null,null,{"$f":"SUM(AF59:AF60,AF52:AF55,AF51)","v":155.95415800000001},null,{"$f":"AF68-Y68","v":-1.5199999999999818},-9.6523773761024462E-3,null,null,null,{"$f":"SUM(AM59:AM60,AM52:AM55,AM51)","v":156.56415799999999},null,{"$f":"AM68-AF68","v":0.60999999999998522},3.9114058119565183E-3]
["HST",null,null,null,0.13,null,{"$f":"G68*E69","v":21.688615520000003},null,0.13,null,{"$f":"K68*I69","v":19.99584054},null,-1.6927749800000029,{"$f":"IF((G69)=0,\"\",(M69/G69))","v":-7.8049010479208439E-2},null,0.13,null,{"$f":"R68*P69","v":20.557440540000002},null,{"$f":"R69-K69","v":0.5616000000000021},2.8085841096630496E-2,null,0.13,null,{"$f":"Y68*W69","v":20.471640539999999},null,{"$f":"Y69-R69","v":-8.5800000000002541E-2},-4.1736713202723697E-3,null,0.13,null,{"$f":"AF68*AD69","v":20.274040540000001},null,{"$f":"AF69-Y69","v":-0.19759999999999778},-9.6523773761024514E-3,null,0.13,null,{"$f":"AM68*AK69","v":20.353340540000001},null,{"$f":"AM69-AF69","v":7.9299999999999926E-2},3.9114058119566093E-3]
["Total Bill (including HST)",null,null,null,null,null,{"$f":"G68+G69","v":188.52411952000003},null,null,null,{"$f":"K68+K69","v":173.80999853999998},null,-14.714120980000047,-7.804901047920855E-2,null,null,null,{"$f":"R68+R69","v":178.69159854000003},null,4.8816000000000486,2.8085841096630672E-2,null,null,null,{"$f":"Y68+Y69","v":177.94579854},null,-0.7458000000000311,-4.17367132027242E-3,null,null,null,{"$f":"AF68+AF69","v":176.22819853999999},null,-1.7176000000000045,-9.652377376102585E-3,null,null,null,{"$f":"AM68+AM69","v":176.91749854},null,0.68930000000000291,3.9114058119566301E-3]
["Ontario Clean Energy Benefit 1",null,null,null,null,null,{"$f":"ROUND(-G70*10%,2)","v":-18.850000000000001},null,null,null,0,null,18.850000000000001,-1,null,null,null,0,null,0,"",null,null,null,0,null,0,"",null,null,null,0,null,0,"",null,null,null,0,null,0,""]
["Total Bill on RPP (including OCEB)",null,null,null,null,null,{"$f":"SUM(G70:G71)","v":169.67411952000003},null,null,null,{"$f":"SUM(K70:K71)","v":173.80999853999998},null,4.1358790199999476,2.4375426445118156E-2,null,null,null,{"$f":"SUM(R70:R71)","v":178.69159854000003},null,4.8816000000000486,2.8085841096630672E-2,null,null,null,{"$f":"SUM(Y70:Y71)","v":177.94579854},null,-0.7458000000000311,-4.17367132027242E-3,null,null,null,{"$f":"SUM(AF70:AF71)","v":176.22819853999999},null,-1.7176000000000045,-9.652377376102585E-3,null,null,null,{"$f":"SUM(AM70:AM71)","v":176.91749854},null,0.68930000000000291,3.9114058119566301E-3]
[null,null,null,null,null,null,null,null,null,null,null,null,null,null,null,null,null,null,null,null,null,null,null,null,null,null,null,"",null,null,null,null,null,null,"",null,null,null,null,null,null,""]
[]
["Loss Factor (%)",null,null,null,3.44E-2,null,null,null,3.9300000000000002E-2,null,null,null,null,null,null,3.9300000000000002E-2,null,null,null,null,null,null,3.9300000000000002E-2,null,null,null,null,null,null,3.9300000000000002E-2,null,null,null,null,null,null,3.9300000000000002E-2]
[]
["Distribution Excluding Rate Riders",null,null,null,"2015 Current Board-Approved",null,null,null,"2016 Test Year 1\nProposed",null,null,null,"Impact\n2016 TEST vs. \n2015 Bridge",null,null,"2017 Test Year 2\nProposed",null,null,null,"Impact\n2017 TEST 2 vs. \n2016 Test 1",null,null,"2018 Test Year 3\nProposed",null,null,null,"Impact\n2018 TEST 3 vs. \n2017 Test 2",null,null,"2019 Test Year 4\nProposed",null,null,null,"Impact\n2019 TEST 4 vs. \n2018 Test 3",null,null,"2020 Test Year 5 \nProposed",null,null,null,"Impact\n2020 TEST 5 vs. \n2019 Test 4"]
[null,null,"Charge Unit",null,"Rate","Volume","Charge",null,"Rate","Volume","Charge",null,"$ Change","% Change",null,"Rate","Volume","Charge",null,"$ Change","% Change",null,"Rate","Volume","Charge",null,"$ Change","% Change",null,"Rate","Volume","Charge",null,"$ Change","% Change",null,"Rate","Volume","Charge",null,"$ Change","% Change"]
[null,null,null,null,"($)",null,"($)",null,"($)",null,"($)",null,null,null,null,"($)",null,"($)",null,null,null,null,"($)",null,"($)",null,null,null,null,"($)",null,"($)",null,null,null,null,"($)",null,"($)"]
["Monthly Service Charge",null,"Monthly",null,12.56,1,{"$f":"F80*E80","v":12.56},null,{"$f":"'Rates Summary'!$E$28","v":13.98},1,{"$f":"J80*I80","v":13.98},null,{"$f":"K80-G80","v":1.42},{"$f":"IF((G80)=0,\"\",(M80/G80))","v":0.11305732484076432},null,{"$f":"'Rates Summary'!$F$28","v":18.54},1,{"$f":"Q80*P80","v":18.54},null,{"$f":"R80-K80","v":4.5599999999999987},{"$f":"IF((K80)=0,\"\",(T80/K80))","v":0.32618025751072949},null,{"$f":"'Rates Summary'!$G$28","v":21.88},1,{"$f":"X80*W80","v":21.88},null,{"$f":"Y80-R80","v":3.34},{"$f":"IF((R80)=0,\"\",(AA80/R80))","v":0.18015102481121897},null,{"$f":"'Rates Summary'!$H$28","v":25.35},1,{"$f":"AE80*AD80","v":25.35},null,{"$f":"AF80-Y80","v":3.4700000000000024},{"$f":"IF((Y80)=0,\"\",(AH80/Y80))","v":0.15859232175502755},null,{"$f":"'Rates Summary'!$I$28","v":25.96},1,{"$f":"AL80*AK80","v":25.96},null,{"$f":"AM80-AF80","v":0.60999999999999943},{"$f":"IF((AF80)=0,\"\",(AO80/AF80))","v":2.4063116370808654E-2}]
["Distribution Volumetric Rate",null,"per kWh",null,1.54E-2,{"$f":"$E$18","v":1000},{"$f":"F81*E81","v":15.4},null,{"$f":"'Rates Summary'!$E$40","v":1.3899999999999999E-2},{"$f":"$E$18","v":1000},{"$f":"J81*I81","v":13.899999999999999},null,{"$f":"K81-G81","v":-1.5000000000000018},{"$f":"IF((G81)=0,\"\",(M81/G81))","v":-9.7402597402597518E-2},null,{"$f":"'Rates Summary'!$F$40","v":8.2000000000000007E-3},{"$f":"$E$18","v":1000},{"$f":"Q81*P81","v":8.2000000000000011},null,-5.6999999999999975,{"$f":"IF((K81)=0,\"\",(T81/K81))","v":-0.410071942446043},null,{"$f":"'Rates Summary'!$G$40","v":4.1999999999999997E-3},{"$f":"$E$18","v":1000},{"$f":"X81*W81","v":4.2},null,-4.0000000000000009,{"$f":"IF((R81)=0,\"\",(AA81/R81))","v":-0.48780487804878053},null,{"$f":"'Rates Summary'!$H$40","v":0},{"$f":"$E$18","v":1000},{"$f":"AE81*AD81","v":0},null,-4.2,{"$f":"IF((Y81)=0,\"\",(AH81/Y81))","v":-1},null,{"$f":"'Rates Summary'!$I$40","v":0},{"$f":"$E$18","v":1000},{"$f":"AL81*AK81","v":0},null,0,{"$f":"IF((AF81)=0,\"\",(AO81/AF81))","v":""}]
["\"Regular\" Distribution Only",null,null,null,null,null,{"$f":"SUM(G80:G81)","v":27.96},null,null,null,{"$f":"SUM(K80:K81)","v":27.88},null,-8.0000000000001847E-2,-2.8612303290415537E-3,null,null,null,{"$f":"SUM(R80:R81)","v":26.740000000000002},null,-1.139999999999997,-4.0889526542324139E-2,null,null,null,{"$f":"SUM(Y80:Y81)","v":26.08},null,-0.66000000000000369,-2.4682124158564085E-2,null,null,null,{"$f":"SUM(AF80:AF81)","v":25.35},null,-0.72999999999999687,-2.7990797546012153E-2,null,null,null,{"$f":"SUM(AM80:AM81)","v":25.96},null,0.60999999999999943,2.4063116370808654E-2]
[]
[null,"Residential (kWh) - 100, 250, 500, 800, 1000, 1500, 2000"]
[null,"GS<50kW (kWh) - 1000, 2000, 5000, 10000, 15000"]
[null,"GS>50kW (kW) - 60, 100, 500, 1000"]
[null,"Large User - range appropriate for utility"]
[null,"Lighting Classes and USL - 150 kWh and 1 kW, range appropriate for utility."]
[]
[null,null,"Note that cells with the highlighted color shown to the left indicate quantities that are loss adjusted."]

{"sheet":"Bill Impact Resi 1500kWh","index":8,"n_rows":90,"n_cols":42,"rows_kept":90,"cut":false,"hidden":false,"merged":[[19,33,19,34],[2,0,2,9],[9,0,9,13],[10,0,10,13],[13,2,13,13],[19,4,19,6],[19,8,19,10],[19,12,19,13],[70,0,70,2],[19,36,19,38],[19,40,19,41],[20,2,21,2],[20,12,21,12],[20,13,21,13],[20,19,21,19],[20,20,21,20],[20,26,21,26],[20,27,21,27],[20,33,21,33],[19,15,19,17],[19,19,19,20],[19,22,19,24],[19,26,19,27],[19,29,19,31],[20,34,21,34],[20,40,21,40],[20,41,21,41],[64,0,64,2],[65,0,65,2],[76,36,76,38],[76,40,76,41],[71,0,71,2],[76,4,76,6],[76,8,76,10],[76,12,76,13],[76,15,76,17],[76,19,76,20],[76,22,76,24],[76,26,76,27],[76,29,76,31],[76,33,76,34],[77,27,78,27],[77,33,78,33],[77,34,78,34],[77,40,78,40],[77,41,78,41],[77,26,78,26],[77,2,78,2],[77,12,78,12],[77,13,78,13],[77,19,78,19],[77,20,78,20]]}
[null,null,null,null,null,null,null,null,null,null,null,null,"File Number:",{"$f":"EBNUMBER","v":"EB-2015-0083"},null,null,null,null,1]
[null,null,null,null,null,null,null,null,null,null,null,null,"Exhibit:",8]
[null,null,null,null,null,null,null,null,null,null,null,null,"Tab:",4]
[null,null,null,null,null,null,null,null,null,null,null,null,"Schedule:",3]
[null,null,null,null,null,null,null,null,null,null,null,null,"Page:"]
[]
[null,null,null,null,null,null,null,null,null,null,null,null,null,"Settlement"]
[null,null,null,null,null,null,null,null,null,null,null,null,"Date:","2015-10-20"]
[]
["Appendix 2-W"]
["Bill Impacts"]
[]
[]
["Customer Class:",null,"Residential",null,null,null,null,null,null,null,null,null,null,null,null,{"$f":"C14","v":"Residential"},null,null,null,null,null,null,null,null,null,null,null,null,null,null,null,null,null,null,null,null,{"$f":"P14","v":"Residential"}]
[]
["TOU / non-TOU:",null,"TOU"]
[]
[null,null,"Consumption",null,1500," kWh"]
[]
[null,null,null,null,"2015 Current Board-Approved",null,null,null,"2016 Test Year 1\nProposed",null,null,null,"Impact\n2016 TEST vs. \n2015 Bridge",null,null,"2017 Test Year 2\nProposed",null,null,null,"Impact\n2017 TEST 2 vs. \n2016 Test 1",null,null,"2018 Test Year 3\nProposed",null,null,null,"Impact\n2018 TEST 3 vs. \n2017 Test 2",null,null,"2019 Test Year 4\nProposed",null,null,null,"Impact\n2019 TEST 4 vs. \n2018 Test 3",null,null,"2020 Test Year 5 \nProposed",null,null,null,"Impact\n2020 TEST 5 vs. \n2019 Test 4"]
[null,null,"Charge Unit",null,"Rate","Volume","Charge",null,"Rate","Volume","Charge",null,"$ Change","% Change",null,"Rate","Volume","Charge",null,"$ Change","% Change",null,"Rate","Volume","Charge",null,"$ Change","% Change",null,"Rate","Volume","Charge",null,"$ Change","% Change",null,"Rate","Volume","Charge",null,"$ Change","% Change"]
[null,null,null,null,"($)",null,"($)",null,"($)",null,"($)",null,null,null,null,"($)",null,"($)",null,null,null,null,"($)",null,"($)",null,null,null,null,"($)",null,"($)",null,null,null,null,"($)",null,"($)"]
["Monthly Service Charge",null,"Monthly",null,12.56,1,{"$f":"F23*E23","v":12.56},null,{"$f":"'Rates Summary'!$E$28","v":13.98},1,{"$f":"J23*I23","v":13.98},null,{"$f":"K23-G23","v":1.42},{"$f":"IF((G23)=0,\"\",(M23/G23))","v":0.11305732484076432},null,{"$f":"'Rates Summary'!$F$28","v":18.54},1,{"$f":"Q23*P23","v":18.54},null,{"$f":"R23-K23","v":4.5599999999999987},{"$f":"IF((K23)=0,\"\",(T23/K23))","v":0.32618025751072949},null,{"$f":"'Rates Summary'!$G$28","v":21.88},1,{"$f":"X23*W23","v":21.88},null,{"$f":"Y23-R23","v":3.34},{"$f":"IF((R23)=0,\"\",(AA23/R23))","v":0.18015102481121897},null,{"$f":"'Rates Summary'!$H$28","v":25.35},1,{"$f":"AE23*AD23","v":25.35},null,{"$f":"AF23-Y23","v":3.4700000000000024},{"$f":"IF((Y23)=0,\"\",(AH23/Y23))","v":0.15859232175502755},null,{"$f":"'Rates Summary'!$I$28","v":25.96},1,{"$f":"AL23*AK23","v":25.96},null,{"$f":"AM23-AF23","v":0.60999999999999943},{"$f":"IF((AF23)=0,\"\",(AO23/AF23))","v":2.4063116370808654E-2}]
["Smart Meter (SMIRR) Rate Rider",null,"Monthly",null,2.63,1,{"$f":"F24*E24","v":2.63},null,0,1,{"$f":"J24*I24","v":0},null,{"$f":"K24-G24","v":-2.63},{"$f":"IF((G24)=0,\"\",(M24/G24))","v":-1},null,0,1,{"$f":"Q24*P24","v":0},null,0,{"$f":"IF((K24)=0,\"\",(T24/K24))","v":""},null,0,1,{"$f":"X24*W24","v":0},null,0,{"$f":"IF((R24)=0,\"\",(AA24/R24))","v":""},null,0,1,{"$f":"AE24*AD24","v":0},null,0,{"$f":"IF((Y24)=0,\"\",(AH24/Y24))","v":""},null,0,1,{"$f":"AL24*AK24","v":0},null,0,{"$f":"IF((AF24)=0,\"\",(AO24/AF24))","v":""}]
["Rate Rider Smart Meters Capital (2016)",null,"Monthly",null,0,1,0,null,{"$f":"'Rates Summary'!C10","v":0.25},1,{"$f":"J25*I25","v":0.25},null,{"$f":"K25-G25","v":0.25},null,null,0,1,{"$f":"Q25*P25","v":0},null,-0.25,-1,null,0,1,{"$f":"X25*W25","v":0},null,0,"",null,0,1,{"$f":"AE25*AD25","v":0},null,0,"",null,0,1,{"$f":"AL25*AK25","v":0},null,0,""]
["Rate Rider Recovery of Stranded Meters",null,"Monthly",null,0,1,0,null,{"$f":"'Rates Summary'!$C11","v":3.69},1,3.69,null,3.69,null,null,0,1,0,null,-3.69,-1,null,0,1,0,null,0,"",null,0,1,0,null,0,"",null,0,1,0,null,0,""]
[null,null,null,null,null,1,0,null,null,1,0,null,0,{"$f":"IF((G27)=0,\"\",(M27/G27))","v":""},null,null,1,0,null,0,"",null,null,1,0,null,0,"",null,null,1,0,null,0,"",null,null,1,0,null,0,""]
[null,null,null,null,null,1,0,null,null,1,0,null,0,"",null,null,1,0,null,0,"",null,null,1,0,null,0,"",null,null,1,0,null,0,"",null,null,1,0,null,0,""]
["Distribution Volumetric Rate",null,"per kWh",null,1.54E-2,{"$f":"$E$18","v":1500},{"$f":"F29*E29","v":23.1},null,{"$f":"'Rates Summary'!$E$40","v":1.3899999999999999E-2},{"$f":"$E$18","v":1500},20.849999999999998,null,-2.2500000000000036,-9.7402597402597546E-2,null,{"$f":"'Rates Summary'!$F$40","v":8.2000000000000007E-3},{"$f":"$E$18","v":1500},12.3,null,-8.5499999999999972,-0.41007194244604306,null,{"$f":"'Rates Summary'!$G$40","v":4.1999999999999997E-3},{"$f":"$E$18","v":1500},6.3,null,-6.0000000000000009,-0.48780487804878053,null,{"$f":"'Rates Summary'!$H$40","v":0},{"$f":"$E$18","v":1500},0,null,-6.3,-1,null,{"$f":"'Rates Summary'!$I$40","v":0},{"$f":"$E$18","v":1500},0,null,0,""]
["Rate Rider Tax Change (2015)",null,"per kWh",null,-1E-4,{"$f":"$E$18","v":1500},{"$f":"F30*E30","v":-0.15},null,0,{"$f":"$E$18","v":1500},0,null,0.15,{"$f":"IF((G30)=0,\"\",(M30/G30))","v":-1},null,0,{"$f":"$E$18","v":1500},0,null,0,"",null,0,{"$f":"$E$18","v":1500},0,null,0,"",null,0,{"$f":"$E$18","v":1500},0,null,0,"",null,0,{"$f":"$E$18","v":1500},0,null,0,""]
["LRAM VA (2016)",null,"per kWh",null,0,{"$f":"$E$18","v":1500},0,null,{"$f":"'Rates Summary'!C7","v":2.9999999999999997E-4},1500,0.44999999999999996,null,0.44999999999999996,null,null,0,1500,0,null,-0.44999999999999996,{"$f":"IF((K31)=0,\"\",(T31/K31))","v":-1},null,0,1500,0,null,0,"",null,0,1500,0,null,0,"",null,0,1500,0,null,0,""]
["Rate Rider Incremental Capital 2012 True-Up (2016)",null,"per kWh",null,0,{"$f":"$E$18","v":1500},0,null,{"$f":"'Rates Summary'!C9","v":4.0000000000000002E-4},1500,0.6,null,0.6,null,null,0,1500,0,null,-0.6,{"$f":"IF((K32)=0,\"\",(T32/K32))","v":-1},null,0,1500,0,null,0,"",null,0,1500,0,null,0,"",null,0,1500,0,null,0,""]
[null,null,"per kWh",null,0,{"$f":"$E$19","v":0},0,null,null,{"$f":"$E$19","v":0},0,null,0,{"$f":"IF((G33)=0,\"\",(M33/G33))","v":""},null,null,{"$f":"$E$19","v":0},0,null,0,"",null,null,{"$f":"$E$19","v":0},0,null,0,"",null,null,{"$f":"$E$19","v":0},0,null,0,"",null,null,{"$f":"$E$19","v":0},0,null,0,""]
[null,null,null,null,0,1500,0,null,null,1500,0,null,0,"",null,null,1500,0,null,0,"",null,null,1500,0,null,0,"",null,null,1500,0,null,0,"",null,null,1500,0,null,0,""]
[null,null,null,null,null,1500,0,null,null,1500,0,null,0,"",null,null,1500,0,null,0,"",null,null,1500,0,null,0,"",null,null,1500,0,null,0,"",null,null,1500,0,null,0,""]
[null,null,null,null,null,1500,0,null,null,1500,0,null,0,"",null,null,1500,0,null,0,"",null,null,1500,0,null,0,"",null,null,1500,0,null,0,"",null,null,1500,0,null,0,""]
[null,null,null,null,null,1500,0,null,null,1500,0,null,0,"",null,null,1500,0,null,0,"",null,null,1500,0,null,0,"",null,null,1500,0,null,0,"",null,null,1500,0,null,0,""]
[null,null,null,null,null,1500,0,null,null,1500,0,null,0,"",null,null,1500,0,null,0,"",null,null,1500,0,null,0,"",null,null,1500,0,null,0,"",null,null,1500,0,null,0,""]
["Sub-Total A (excluding pass through)",null,null,null,null,null,{"$f":"SUM(G23:G38)","v":38.140000000000008},null,null,null,{"$f":"SUM(K23:K38)","v":39.82},null,{"$f":"K39-G39","v":1.6799999999999926},4.4048243314105721E-2,null,null,null,{"$f":"SUM(R23:R38)","v":30.84},null,-8.98,-0.22551481667503767,null,null,null,{"$f":"SUM(Y23:Y38)","v":28.18},null,-2.66,-8.6251621271076523E-2,null,null,null,{"$f":"SUM(AF23:AF38)","v":25.35},null,-2.8299999999999983,-0.10042583392476928,null,null,null,{"$f":"SUM(AM23:AM38)","v":25.96},null,0.60999999999999943,2.4063116370808654E-2]
["Deferral/Variance Account Disposition Rate Rider (2016)",null,"per kWh",null,0,{"$f":"$E$18","v":1500},{"$f":"F40*E40","v":0},null,{"$f":"'Rates Summary'!C5","v":6.9999999999999999E-4},{"$f":"$E$18","v":1500},{"$f":"J40*I40","v":1.05},null,{"$f":"K40-G40","v":1.05},{"$f":"IF((G40)=0,\"\",(M40/G40))","v":""},null,0,{"$f":"$E$18","v":1500},{"$f":"Q40*P40","v":0},null,-1.05,-1,null,0,{"$f":"$E$18","v":1500},{"$f":"X40*W40","v":0},null,0,"",null,0,{"$f":"$E$18","v":1500},{"$f":"AE40*AD40","v":0},null,0,"",null,0,{"$f":"$E$18","v":1500},{"$f":"AL40*AK40","v":0},null,0,""]
[null,null,null,null,null,{"$f":"$E$18","v":1500},{"$f":"F41*E41","v":0},null,{"$f":"E41","v":0},{"$f":"$E$18","v":1500},{"$f":"J41*I41","v":0},null,{"$f":"K41-G41","v":0},{"$f":"IF((G41)=0,\"\",(M41/G41))","v":""},null,null,{"$f":"$E$18","v":1500},{"$f":"Q41*P41","v":0},null,0,"",null,null,{"$f":"$E$18","v":1500},{"$f":"X41*W41","v":0},null,0,"",null,null,{"$f":"$E$18","v":1500},{"$f":"AE41*AD41","v":0},null,0,"",null,null,{"$f":"$E$18","v":1500},{"$f":"AL41*AK41","v":0},null,0,""]
["Rate Rider CGAAP Account 1576 (2016)",null,"per kWh",null,0,1500,0,null,{"$f":"'Rates Summary'!$C$8","v":-1.0800000000000001E-2},1500,-16.2,null,-16.2,"",null,0,1500,0,null,16.2,-1,null,{"$f":"P42","v":0},1500,0,null,0,"",null,{"$f":"W42","v":0},1500,0,null,0,"",null,{"$f":"AD42","v":0},1500,0,null,0,""]
["Disposition of Global Adjustment (2015)  \nApplicable to Non-RPP Customers",null,"per kWh",null,1.5599999999999999E-2,0,0,null,0,1500,0,null,0,"",null,0,1500,0,null,0,"",null,0,1500,0,null,0,"",null,0,1500,0,null,0,"",null,0,1500,0,null,0,""]
["Disposition of Global Adjustment (2016) \nApplicable to Non-RPP Customers",null,"per kWh",null,0,1500,0,null,{"$f":"'Rates Summary'!C6","v":2.0500000000000001E-2},0,0,null,0,"",null,0,1500,0,null,0,"",null,0,1500,0,null,0,"",null,0,1500,0,null,0,"",null,0,1500,0,null,0,""]
["Low Voltage Service Charge",null,"per kWh",null,6.9999999999999999E-4,1500,{"$f":"F45*E45","v":1.05},null,{"$f":"'Rates Summary'!C15","v":1.1999999999999999E-3},1500,{"$f":"J45*I45","v":1.7999999999999998},null,{"$f":"K45-G45","v":0.74999999999999978},{"$f":"IF((G45)=0,\"\",(M45/G45))","v":0.71428571428571408},null,{"$f":"I45","v":1.1999999999999999E-3},1500,{"$f":"Q45*P45","v":1.7999999999999998},null,{"$f":"R45-K45","v":0},0,null,{"$f":"P45","v":1.1999999999999999E-3},1500,{"$f":"X45*W45","v":1.7999999999999998},null,{"$f":"Y45-R45","v":0},0,null,{"$f":"W45","v":1.1999999999999999E-3},1500,{"$f":"AE45*AD45","v":1.7999999999999998},null,{"$f":"AF45-Y45","v":0},0,null,{"$f":"AD45","v":1.1999999999999999E-3},1500,{"$f":"AL45*AK45","v":1.7999999999999998},null,{"$f":"AM45-AF45","v":0},0]
["Line Losses on Cost of Power",null,"per kWh",null,{"$f":"IF(ISBLANK(C16)=TRUE, 0, IF(C16=\"TOU\", 0.64*$E$56+0.18*$E$57+0.18*$E$58, IF(AND(C16=\"non-TOU\", F60>0), E60,E59)))","v":0.10766000000000001},{"$f":"$E$18*(1+$E$75)-$E$18","v":51.599999999999909},5.5552559999999902,null,{"$f":"E46","v":0.10766000000000001},{"$f":"$E$18*(1+$I$75)-$E$18","v":58.949999999999818},6.3465569999999811,null,0.79130099999999093,0.14244186046511489,null,{"$f":"I46","v":0.10766000000000001},{"$f":"$E$18*(1+$I$75)-$E$18","v":58.949999999999818},{"$f":"Q46*P46","v":6.3465569999999811},null,{"$f":"R46-K46","v":0},0,null,{"$f":"P46","v":0.10766000000000001},{"$f":"$E$18*(1+$I$75)-$E$18","v":58.949999999999818},{"$f":"X46*W46","v":6.3465569999999811},null,{"$f":"Y46-R46","v":0},0,null,{"$f":"W46","v":0.10766000000000001},{"$f":"$E$18*(1+$I$75)-$E$18","v":58.949999999999818},{"$f":"AE46*AD46","v":6.3465569999999811},null,{"$f":"AF46-Y46","v":0},0,null,{"$f":"AD46","v":0.10766000000000001},{"$f":"$E$18*(1+$I$75)-$E$18","v":58.949999999999818},{"$f":"AL46*AK46","v":6.3465569999999811},null,{"$f":"AM46-AF46","v":0},0]
["Smart Meter Entity Charge",null,"Monthly",null,0.79,1,{"$f":"F47*E47","v":0.79},null,0.79,1,{"$f":"J47*I47","v":0.79},null,{"$f":"K47-G47","v":0},null,null,0.79,1,{"$f":"Q47*P47","v":0.79},null,{"$f":"R47-K47","v":0},0,null,0.79,1,{"$f":"X47*W47","v":0.79},null,{"$f":"Y47-R47","v":0},0,null,0,1,{"$f":"AE47*AD47","v":0},null,{"$f":"AF47-Y47","v":-0.79},-1,null,0,1,{"$f":"AL47*AK47","v":0},null,{"$f":"AM47-AF47","v":0},""]
["Sub-Total B - Distribution (includes Sub-Total A)",null,null,null,null,null,{"$f":"SUM(G40:G47)+G39","v":45.535255999999997},null,null,null,{"$f":"SUM(K40:K47)+K39","v":33.606556999999981},null,{"$f":"K48-G48","v":-11.928699000000016},{"$f":"IF((G48)=0,\"\",(M48/G48))","v":-0.26196622239260092},null,null,null,{"$f":"SUM(R40:R47)+R39","v":39.776556999999983},null,{"$f":"R48-K48","v":6.1700000000000017},0.1835951240110674,null,null,null,{"$f":"SUM(Y40:Y47)+Y39","v":37.116556999999979},null,{"$f":"Y48-R48","v":-2.6600000000000037},-6.6873560725731113E-2,null,null,null,{"$f":"SUM(AF40:AF47)+AF39","v":33.496556999999981},null,{"$f":"AF48-Y48","v":-3.6199999999999974},-9.7530598002395524E-2,null,null,null,{"$f":"SUM(AM40:AM47)+AM39","v":34.106556999999981},null,{"$f":"AM48-AF48","v":0.60999999999999943},1.8210826861996585E-2]
["RTSR - Network",null,"per kWh",null,6.7000000000000002E-3,{"$f":"$E$18*(1+$E$75)","v":1551.6},{"$f":"F49*E49","v":10.395719999999999},null,{"$f":"'Rates Summary'!C17","v":7.1000000000000004E-3},{"$f":"$E$18*(1+$I$75)","v":1558.9499999999998},{"$f":"J49*I49","v":11.068544999999999},null,0.67282499999999956,6.472134686197778E-2,null,{"$f":"I49","v":7.1000000000000004E-3},{"$f":"$E$18*(1+P75)","v":1558.9499999999998},{"$f":"Q49*P49","v":11.068544999999999},null,0,0,null,{"$f":"P49","v":7.1000000000000004E-3},{"$f":"$E$18*(1+W75)","v":1558.9499999999998},{"$f":"X49*W49","v":11.068544999999999},null,0,0,null,{"$f":"W49","v":7.1000000000000004E-3},{"$f":"$E$18*(1+AD75)","v":1558.9499999999998},{"$f":"AE49*AD49","v":11.068544999999999},null,0,0,null,{"$f":"AD49","v":7.1000000000000004E-3},{"$f":"$E$18*(1+AK75)","v":1558.9499999999998},{"$f":"AL49*AK49","v":11.068544999999999},null,0,0]
["RTSR - Line and Transformation Connection",null,"per kWh",null,5.1000000000000004E-3,{"$f":"F49","v":1551.6},{"$f":"F50*E50","v":7.9131600000000004},null,{"$f":"'Rates Summary'!C18","v":5.5999999999999999E-3},{"$f":"J49","v":1558.9499999999998},{"$f":"J50*I50","v":8.7301199999999994},null,0.81695999999999902,0.10324067755485786,null,{"$f":"I50","v":5.5999999999999999E-3},{"$f":"Q49","v":1558.9499999999998},{"$f":"Q50*P50","v":8.7301199999999994},null,0,0,null,{"$f":"P50","v":5.5999999999999999E-3},{"$f":"X49","v":1558.9499999999998},{"$f":"X50*W50","v":8.7301199999999994},null,0,0,null,{"$f":"W50","v":5.5999999999999999E-3},{"$f":"AE49","v":1558.9499999999998},{"$f":"AE50*AD50","v":8.7301199999999994},null,0,0,null,{"$f":"AD50","v":5.5999999999999999E-3},{"$f":"AL49","v":1558.9499999999998},{"$f":"AL50*AK50","v":8.7301199999999994},null,0,0]
["Sub-Total C - Delivery (including Sub-Total B)",null,null,null,null,null,{"$f":"SUM(G48:G50)","v":63.844135999999992},null,null,null,{"$f":"SUM(K48:K50)","v":53.405221999999981},null,-10.438914000000011,-0.16350623023545988,null,null,null,{"$f":"SUM(R48:R50)","v":59.575221999999982},null,6.1700000000000017,0.11553177327865062,null,null,null,{"$f":"SUM(Y48:Y50)","v":56.915221999999979},null,-2.6600000000000037,-4.4649434961400641E-2,null,null,null,{"$f":"SUM(AF48:AF50)","v":53.295221999999981},null,-3.6199999999999974,-6.3603371344137058E-2,null,null,null,{"$f":"SUM(AM48:AM50)","v":53.905221999999981},null,0.60999999999999943,1.1445678939098886E-2]
["Wholesale Market Service Charge (WMSC)",null,"per kWh",null,4.4000000000000003E-3,{"$f":"F50","v":1551.6},{"$f":"F52*E52","v":6.8270400000000002},null,{"$f":"'Rates Summary'!C19","v":4.4000000000000003E-3},{"$f":"J50","v":1558.9499999999998},{"$f":"J52*I52","v":6.8593799999999998},null,3.2339999999999591E-2,4.7370456303170317E-3,null,{"$f":"I52","v":4.4000000000000003E-3},{"$f":"Q50","v":1558.9499999999998},{"$f":"Q52*P52","v":6.8593799999999998},null,0,0,null,{"$f":"P52","v":4.4000000000000003E-3},{"$f":"X50","v":1558.9499999999998},{"$f":"X52*W52","v":6.8593799999999998},null,0,0,null,{"$f":"W52","v":4.4000000000000003E-3},{"$f":"AE50","v":1558.9499999999998},{"$f":"AE52*AD52","v":6.8593799999999998},null,0,0,null,{"$f":"AD52","v":4.4000000000000003E-3},{"$f":"AL50","v":1558.9499999999998},{"$f":"AL52*AK52","v":6.8593799999999998},null,0,0]
["Rural and Remote Rate Protection (RRRP)",null,"per kWh",null,1.2999999999999999E-3,{"$f":"F50","v":1551.6},2.01708,null,{"$f":"'Rates Summary'!C20","v":1.2999999999999999E-3},{"$f":"J50","v":1558.9499999999998},2.0266349999999997,null,9.5549999999997581E-3,4.7370456303169719E-3,null,{"$f":"I53","v":1.2999999999999999E-3},{"$f":"Q50","v":1558.9499999999998},2.0266349999999997,null,0,0,null,{"$f":"P53","v":1.2999999999999999E-3},{"$f":"X50","v":1558.9499999999998},2.0266349999999997,null,0,0,null,{"$f":"W53","v":1.2999999999999999E-3},{"$f":"AE50","v":1558.9499999999998},2.0266349999999997,null,0,0,null,{"$f":"AD53","v":1.2999999999999999E-3},{"$f":"AL50","v":1558.9499999999998},2.0266349999999997,null,0,0]
["Standard Supply Service Charge",null,"Monthly",null,0.25,1,0.25,null,{"$f":"'Rates Summary'!C21","v":0.25},1,0.25,null,0,0,null,{"$f":"I54","v":0.25},1,0.25,null,0,0,null,{"$f":"P54","v":0.25},1,0.25,null,0,0,null,{"$f":"W54","v":0.25},1,0.25,null,0,0,null,{"$f":"AD54","v":0.25},1,0.25,null,0,0]
["Debt Retirement Charge (DRC)",null,"per kWh",null,7.0000000000000001E-3,{"$f":"E18","v":1500},10.5,null,0,{"$f":"E18","v":1500},0,null,-10.5,-1,null,0,{"$f":"J55","v":1500},0,null,0,"",null,0,{"$f":"Q55","v":1500},0,null,0,"",null,0,{"$f":"X55","v":1500},0,null,0,"",null,0,{"$f":"AE55","v":1500},0,null,0,""]
["TOU - Off Peak",null,"per kWh",null,8.3000000000000004E-2,{"$f":"0.64*$E$18","v":960},79.680000000000007,null,{"$f":"E56","v":8.3000000000000004E-2},{"$f":"F56","v":960},79.680000000000007,null,0,0,null,{"$f":"I56","v":8.3000000000000004E-2},{"$f":"J56","v":960},79.680000000000007,null,0,0,null,{"$f":"P56","v":8.3000000000000004E-2},{"$f":"Q56","v":960},79.680000000000007,null,0,0,null,{"$f":"W56","v":8.3000000000000004E-2},{"$f":"X56","v":960},79.680000000000007,null,0,0,null,{"$f":"AD56","v":8.3000000000000004E-2},{"$f":"AE56","v":960},79.680000000000007,null,0,0]
["TOU - Mid Peak",null,"per kWh",null,0.128,{"$f":"0.18*$E$18","v":270},34.56,null,{"$f":"E57","v":0.128},{"$f":"F57","v":270},34.56,null,0,0,null,{"$f":"I57","v":0.128},270,34.56,null,0,0,null,{"$f":"P57","v":0.128},270,34.56,null,0,0,null,{"$f":"W57","v":0.128},270,34.56,null,0,0,null,{"$f":"AD57","v":0.128},270,34.56,null,0,0]
["TOU - On Peak",null,"per kWh",null,0.17499999999999999,{"$f":"0.18*$E$18","v":270},47.25,null,0.17499999999999999,{"$f":"F58","v":270},47.25,null,0,0,null,0.17499999999999999,270,47.25,null,0,0,null,0.17499999999999999,270,47.25,null,0,0,null,0.17499999999999999,270,47.25,null,0,0,null,0.17499999999999999,270,47.25,null,0,0]
["Energy - RPP - Tier 1",null,"per kWh",null,9.9000000000000005E-2,{"$f":"IF(AND($S$1=1, E18>=600), 600, IF(AND($S$1=1, AND(E18<600, E18>=0)), E18, IF(AND($S$1=2, E18>=1000), 1000, IF(AND($S$1=2, AND(E18<1000, E18>=0)), E18))))","v":600},{"$f":"F59*E59","v":59.400000000000006},null,9.9000000000000005E-2,{"$f":"F59","v":600},{"$f":"J59*I59","v":59.400000000000006},null,0,0,null,9.9000000000000005E-2,600,{"$f":"Q59*P59","v":59.400000000000006},null,0,0,null,9.9000000000000005E-2,600,{"$f":"X59*W59","v":59.400000000000006},null,0,0,null,9.9000000000000005E-2,600,{"$f":"AE59*AD59","v":59.400000000000006},null,0,0,null,9.9000000000000005E-2,600,{"$f":"AL59*AK59","v":59.400000000000006},null,0,0]
["Energy - RPP - Tier 2",null,"per kWh",null,0.11600000000000001,{"$f":"IF(AND($S$1=1, E18>=600), E18-600, IF(AND($S$1=1, AND(E18<600, E18>=0)), 0, IF(AND($S$1=2, E18>=1000), E18-1000, IF(AND($S$1=2, AND(E18<1000, E18>=0)), 0))))","v":900},{"$f":"F60*E60","v":104.4},null,0.11600000000000001,{"$f":"F60","v":900},{"$f":"J60*I60","v":104.4},null,0,0,null,0.11600000000000001,900,{"$f":"Q60*P60","v":104.4},null,0,0,null,0.11600000000000001,900,{"$f":"X60*W60","v":104.4},null,0,0,null,0.11600000000000001,900,{"$f":"AE60*AD60","v":104.4},null,0,0,null,0.11600000000000001,900,{"$f":"AL60*AK60","v":104.4},null,0,0]
[null,null,null,null,null,null,null,null,null,null,null,null,null,null,null,null,null,null,null,null,"",null,null,null,null,null,null,"",null,null,null,null,null,null,"",null,null,null,null,null,null,""]
["Total Bill on TOU (before Taxes)",null,null,null,null,null,{"$f":"SUM(G52:G58,G51)","v":244.928256},null,null,null,{"$f":"SUM(K52:K58,K51)","v":224.03123699999998},null,{"$f":"K62-G62","v":-20.897019000000029},{"$f":"IF((G62)=0,\"\",(M62/G62))","v":-8.5318939273384728E-2},null,null,null,{"$f":"SUM(R52:R58,R51)","v":230.20123699999999},null,{"$f":"R62-K62","v":6.1700000000000159},2.75408022676767E-2,null,null,null,{"$f":"SUM(Y52:Y58,Y51)","v":227.54123699999997},null,{"$f":"Y62-R62","v":-2.660000000000025},-1.1555107325509397E-2,null,null,null,{"$f":"SUM(AF52:AF58,AF51)","v":223.92123699999996},null,{"$f":"AF62-Y62","v":-3.6200000000000045},-1.5909204185261615E-2,null,null,null,{"$f":"SUM(AM52:AM58,AM51)","v":224.53123699999998},null,{"$f":"AM62-AF62","v":0.61000000000001364},2.7241721605888313E-3]
["HST",null,null,null,0.13,null,{"$f":"G62*E63","v":31.840673280000001},null,0.13,null,{"$f":"K62*I63","v":29.12406081},null,-2.7166124700000012,-8.5318939273384645E-2,null,0.13,null,{"$f":"R62*P63","v":29.926160809999999},null,{"$f":"R63-K63","v":0.80209999999999937},2.7540802267676606E-2,null,0.13,null,{"$f":"Y62*W63","v":29.580360809999998},null,{"$f":"Y63-R63","v":-0.34580000000000055},-1.1555107325509307E-2,null,0.13,null,{"$f":"AF62*AD63","v":29.109760809999997},null,{"$f":"AF63-Y63","v":-0.47060000000000102},-1.5909204185261629E-2,null,0.13,null,{"$f":"AM62*AK63","v":29.189060809999997},null,{"$f":"AM63-AF63","v":7.9299999999999926E-2},2.7241721605887675E-3]
["Total Bill (including HST)",null,null,null,null,null,{"$f":"G62+G63","v":276.76892928000001},null,null,null,{"$f":"K62+K63","v":253.15529780999998},null,-23.61363147000003,-8.5318939273384714E-2,null,null,null,{"$f":"R62+R63","v":260.12739780999999},null,6.9721000000000117,2.7540802267676676E-2,null,null,null,{"$f":"Y62+Y63","v":257.12159780999997},null,-3.005800000000022,-1.1555107325509375E-2,null,null,null,{"$f":"AF62+AF63","v":253.03099780999997},null,-4.0905999999999949,-1.5909204185261577E-2,null,null,null,{"$f":"AM62+AM63","v":253.72029780999998},null,0.68930000000000291,2.7241721605887818E-3]
["Ontario Clean Energy Benefit 1",null,null,null,null,null,{"$f":"ROUND(-G64*10%,2)","v":-27.68},null,null,null,0,null,27.68,-1,null,null,null,0,null,0,"",null,null,null,0,null,0,"",null,null,null,0,null,0,"",null,null,null,0,null,0,""]
["Total Bill on TOU (including OCEB)",null,null,null,null,null,{"$f":"G64+G65","v":249.08892928},null,null,null,{"$f":"K64+K65","v":253.15529780999998},null,4.066368529999977,1.6324966917453752E-2,null,null,null,{"$f":"R64+R65","v":260.12739780999999},null,6.9721000000000117,2.7540802267676676E-2,null,null,null,{"$f":"Y64+Y65","v":257.12159780999997},null,-3.005800000000022,-1.1555107325509375E-2,null,null,null,{"$f":"AF64+AF65","v":253.03099780999997},null,-4.0905999999999949,-1.5909204185261577E-2,null,null,null,{"$f":"AM64+AM65","v":253.72029780999998},null,0.68930000000000291,2.7241721605887818E-3]
[null,null,null,null,null,null,null,null,null,null,null,null,null,null,null,null,null,null,null,null,"",null,null,null,null,null,null,"",null,null,null,null,null,null,"",null,null,null,null,null,null,""]
["Total Bill on RPP (before Taxes)",null,null,null,null,null,{"$f":"SUM(G59:G60,G52:G55,G51)","v":247.23825600000001},null,null,null,{"$f":"SUM(K59:K60,K52:K55,K51)","v":226.34123699999998},null,{"$f":"K68-G68","v":-20.897019000000029},{"$f":"IF((G68)=0,\"\",(M68/G68))","v":-8.4521786142998948E-2},null,null,null,{"$f":"SUM(R59:R60,R52:R55,R51)","v":232.51123699999999},null,{"$f":"R68-K68","v":6.1700000000000159},2.7259725544400096E-2,null,null,null,{"$f":"SUM(Y59:Y60,Y52:Y55,Y51)","v":229.85123699999997},null,{"$f":"Y68-R68","v":-2.660000000000025},-1.1440307291470928E-2,null,null,null,{"$f":"SUM(AF59:AF60,AF52:AF55,AF51)","v":226.23123699999996},null,{"$f":"AF68-Y68","v":-3.6200000000000045},-1.5749317024558823E-2,null,null,null,{"$f":"SUM(AM59:AM60,AM52:AM55,AM51)","v":226.84123699999998},null,{"$f":"AM68-AF68","v":0.61000000000001364},2.6963562065481423E-3]
["HST",null,null,null,0.13,null,{"$f":"G68*E69","v":32.140973280000004},null,0.13,null,{"$f":"K68*I69","v":29.42436081},null,-2.7166124700000047,{"$f":"IF((G69)=0,\"\",(M69/G69))","v":-8.4521786142998975E-2},null,0.13,null,{"$f":"R68*P69","v":30.226460809999999},null,{"$f":"R69-K69","v":0.80209999999999937},2.7259725544400003E-2,null,0.13,null,{"$f":"Y68*W69","v":29.880660809999998},null,{"$f":"Y69-R69","v":-0.34580000000000055},-1.1440307291470839E-2,null,0.13,null,{"$f":"AF68*AD69","v":29.410060809999997},null,{"$f":"AF69-Y69","v":-0.47060000000000102},-1.5749317024558836E-2,null,0.13,null,{"$f":"AM68*AK69","v":29.489360809999997},null,{"$f":"AM69-AF69","v":7.9299999999999926E-2},2.6963562065480794E-3]
["Total Bill (including HST)",null,null,null,null,null,{"$f":"G68+G69","v":279.37922928},null,null,null,{"$f":"K68+K69","v":255.76559780999997},null,-23.61363147000003,-8.4521786142998948E-2,null,null,null,{"$f":"R68+R69","v":262.73769780999999},null,6.9721000000000117,2.7259725544400072E-2,null,null,null,{"$f":"Y68+Y69","v":259.73189780999996},null,-3.005800000000022,-1.1440307291470905E-2,null,null,null,{"$f":"AF68+AF69","v":255.64129780999997},null,-4.0905999999999949,-1.5749317024558784E-2,null,null,null,{"$f":"AM68+AM69","v":256.33059780999997},null,0.68930000000000291,2.6963562065480933E-3]
["Ontario Clean Energy Benefit 1",null,null,null,null,null,{"$f":"ROUND(-G70*10%,2)","v":-27.94},null,null,null,0,null,27.94,-1,null,null,null,0,null,0,"",null,null,null,0,null,0,"",null,null,null,0,null,0,"",null,null,null,0,null,0,""]
["Total Bill on RPP (including OCEB)",null,null,null,null,null,{"$f":"SUM(G70:G71)","v":251.43922928000001},null,null,null,{"$f":"SUM(K70:K71)","v":255.76559780999997},null,4.3263685299999679,1.72064181965105E-2,null,null,null,{"$f":"SUM(R70:R71)","v":262.73769780999999},null,6.9721000000000117,2.7259725544400072E-2,null,null,null,{"$f":"SUM(Y70:Y71)","v":259.73189780999996},null,-3.005800000000022,-1.1440307291470905E-2,null,null,null,{"$f":"SUM(AF70:AF71)","v":255.64129780999997},null,-4.0905999999999949,-1.5749317024558784E-2,null,null,null,{"$f":"SUM(AM70:AM71)","v":256.33059780999997},null,0.68930000000000291,2.6963562065480933E-3]
[null,null,null,null,null,null,null,null,null,null,null,null,null,null,null,null,null,null,null,null,null,null,null,null,null,null,null,"",null,null,null,null,null,null,"",null,null,null,null,null,null,""]
[]
["Loss Factor (%)",null,null,null,3.44E-2,null,null,null,3.9300000000000002E-2,null,null,null,null,null,null,3.9300000000000002E-2,null,null,null,null,null,null,3.9300000000000002E-2,null,null,null,null,null,null,3.9300000000000002E-2,null,null,null,null,null,null,3.9300000000000002E-2]
[]
["Distribution Excluding Rate Riders",null,null,null,"2015 Current Board-Approved",null,null,null,"2016 Test Year 1\nProposed",null,null,null,"Impact\n2016 TEST vs. \n2015 Bridge",null,null,"2017 Test Year 2\nProposed",null,null,null,"Impact\n2017 TEST 2 vs. \n2016 Test 1",null,null,"2018 Test Year 3\nProposed",null,null,null,"Impact\n2018 TEST 3 vs. \n2017 Test 2",null,null,"2019 Test Year 4\nProposed",null,null,null,"Impact\n2019 TEST 4 vs. \n2018 Test 3",null,null,"2020 Test Year 5 \nProposed",null,null,null,"Impact\n2020 TEST 5 vs. \n2019 Test 4"]
[null,null,"Charge Unit",null,"Rate","Volume","Charge",null,"Rate","Volume","Charge",null,"$ Change","% Change",null,"Rate","Volume","Charge",null,"$ Change","% Change",null,"Rate","Volume","Charge",null,"$ Change","% Change",null,"Rate","Volume","Charge",null,"$ Change","% Change",null,"Rate","Volume","Charge",null,"$ Change","% Change"]
[null,null,null,null,"($)",null,"($)",null,"($)",null,"($)",null,null,null,null,"($)",null,"($)",null,null,null,null,"($)",null,"($)",null,null,null,null,"($)",null,"($)",null,null,null,null,"($)",null,"($)"]
["Monthly Service Charge",null,"Monthly",null,12.56,1,{"$f":"F80*E80","v":12.56},null,{"$f":"'Rates Summary'!$E$28","v":13.98},1,{"$f":"J80*I80","v":13.98},null,{"$f":"K80-G80","v":1.42},{"$f":"IF((G80)=0,\"\",(M80/G80))","v":0.11305732484076432},null,{"$f":"'Rates Summary'!$F$28","v":18.54},1,{"$f":"Q80*P80","v":18.54},null,{"$f":"R80-K80","v":4.5599999999999987},{"$f":"IF((K80)=0,\"\",(T80/K80))","v":0.32618025751072949},null,{"$f":"'Rates Summary'!$G$28","v":21.88},1,{"$f":"X80*W80","v":21.88},null,{"$f":"Y80-R80","v":3.34},{"$f":"IF((R80)=0,\"\",(AA80/R80))","v":0.18015102481121897},null,{"$f":"'Rates Summary'!$H$28","v":25.35},1,{"$f":"AE80*AD80","v":25.35},null,{"$f":"AF80-Y80","v":3.4700000000000024},{"$f":"IF((Y80)=0,\"\",(AH80/Y80))","v":0.15859232175502755},null,{"$f":"'Rates Summary'!$I$28","v":25.96},1,{"$f":"AL80*AK80","v":25.96},null,{"$f":"AM80-AF80","v":0.60999999999999943},{"$f":"IF((AF80)=0,\"\",(AO80/AF80))","v":2.4063116370808654E-2}]
["Distribution Volumetric Rate",null,"per kWh",null,1.54E-2,{"$f":"$E$18","v":1500},{"$f":"F81*E81","v":23.1},null,{"$f":"'Rates Summary'!$E$40","v":1.3899999999999999E-2},{"$f":"$E$18","v":1500},{"$f":"J81*I81","v":20.849999999999998},null,{"$f":"K81-G81","v":-2.2500000000000036},{"$f":"IF((G81)=0,\"\",(M81/G81))","v":-9.7402597402597546E-2},null,{"$f":"'Rates Summary'!$F$40","v":8.2000000000000007E-3},{"$f":"$E$18","v":1500},{"$f":"Q81*P81","v":12.3},null,-8.5499999999999972,{"$f":"IF((K81)=0,\"\",(T81/K81))","v":-0.41007194244604306},null,{"$f":"'Rates Summary'!$G$40","v":4.1999999999999997E-3},{"$f":"$E$18","v":1500},{"$f":"X81*W81","v":6.3},null,-6.0000000000000009,{"$f":"IF((R81)=0,\"\",(AA81/R81))","v":-0.48780487804878053},null,{"$f":"'Rates Summary'!$H$40","v":0},{"$f":"$E$18","v":1500},{"$f":"AE81*AD81","v":0},null,-6.3,{"$f":"IF((Y81)=0,\"\",(AH81/Y81))","v":-1},null,{"$f":"'Rates Summary'!$I$40","v":0},{"$f":"$E$18","v":1500},{"$f":"AL81*AK81","v":0},null,0,{"$f":"IF((AF81)=0,\"\",(AO81/AF81))","v":""}]
["\"Regular\" Distribution Only",null,null,null,null,null,{"$f":"SUM(G80:G81)","v":35.660000000000004},null,null,null,{"$f":"SUM(K80:K81)","v":34.83},null,-0.8300000000000054,-2.327537857543481E-2,null,null,null,{"$f":"SUM(R80:R81)","v":30.84},null,-3.9899999999999984,-0.11455641688199823,null,null,null,{"$f":"SUM(Y80:Y81)","v":28.18},null,-2.66,-8.6251621271076523E-2,null,null,null,{"$f":"SUM(AF80:AF81)","v":25.35},null,-2.8299999999999983,-0.10042583392476928,null,null,null,{"$f":"SUM(AM80:AM81)","v":25.96},null,0.60999999999999943,2.4063116370808654E-2]
[]
[null,"Residential (kWh) - 100, 250, 500, 800, 1000, 1500, 2000"]
[null,"GS<50kW (kWh) - 1000, 2000, 5000, 10000, 15000"]
[null,"GS>50kW (kW) - 60, 100, 500, 1000"]
[null,"Large User - range appropriate for utility"]
[null,"Lighting Classes and USL - 150 kWh and 1 kW, range appropriate for utility."]
[]
[null,null,"Note that cells with the highlighted color shown to the left indicate quantities that are loss adjusted."]

{"sheet":"Bill Impact Resi 2000kWh","index":9,"n_rows":90,"n_cols":42,"rows_kept":90,"cut":false,"hidden":false,"merged":[[19,33,19,34],[2,0,2,9],[9,0,9,13],[10,0,10,13],[13,2,13,13],[19,4,19,6],[19,8,19,10],[19,12,19,13],[70,0,70,2],[19,36,19,38],[19,40,19,41],[20,2,21,2],[20,12,21,12],[20,13,21,13],[20,19,21,19],[20,20,21,20],[20,26,21,26],[20,27,21,27],[20,33,21,33],[19,15,19,17],[19,19,19,20],[19,22,19,24],[19,26,19,27],[19,29,19,31],[20,34,21,34],[20,40,21,40],[20,41,21,41],[64,0,64,2],[65,0,65,2],[76,36,76,38],[76,40,76,41],[71,0,71,2],[76,4,76,6],[76,8,76,10],[76,12,76,13],[76,15,76,17],[76,19,76,20],[76,22,76,24],[76,26,76,27],[76,29,76,31],[76,33,76,34],[77,27,78,27],[77,33,78,33],[77,34,78,34],[77,40,78,40],[77,41,78,41],[77,26,78,26],[77,2,78,2],[77,12,78,12],[77,13,78,13],[77,19,78,19],[77,20,78,20]]}
[null,null,null,null,null,null,null,null,null,null,null,null,"File Number:",{"$f":"EBNUMBER","v":"EB-2015-0083"},null,null,null,null,1]
[null,null,null,null,null,null,null,null,null,null,null,null,"Exhibit:",8]
[null,null,null,null,null,null,null,null,null,null,null,null,"Tab:",4]
[null,null,null,null,null,null,null,null,null,null,null,null,"Schedule:",3]
[null,null,null,null,null,null,null,null,null,null,null,null,"Page:"]
[]
[null,null,null,null,null,null,null,null,null,null,null,null,null,"Settlement"]
[null,null,null,null,null,null,null,null,null,null,null,null,"Date:","2015-10-20"]
[]
["Appendix 2-W"]
["Bill Impacts"]
[]
[]
["Customer Class:",null,"Residential",null,null,null,null,null,null,null,null,null,null,null,null,{"$f":"C14","v":"Residential"},null,null,null,null,null,null,null,null,null,null,null,null,null,null,null,null,null,null,null,null,{"$f":"P14","v":"Residential"}]
[]
["TOU / non-TOU:",null,"TOU"]
[]
[null,null,"Consumption",null,2000," kWh"]
[]
[null,null,null,null,"2015 Current Board-Approved",null,null,null,"2016 Test Year 1\nProposed",null,null,null,"Impact\n2016 TEST vs. \n2015 Bridge",null,null,"2017 Test Year 2\nProposed",null,null,null,"Impact\n2017 TEST 2 vs. \n2016 Test 1",null,null,"2018 Test Year 3\nProposed",null,null,null,"Impact\n2018 TEST 3 vs. \n2017 Test 2",null,null,"2019 Test Year 4\nProposed",null,null,null,"Impact\n2019 TEST 4 vs. \n2018 Test 3",null,null,"2020 Test Year 5 \nProposed",null,null,null,"Impact\n2020 TEST 5 vs. \n2019 Test 4"]
[null,null,"Charge Unit",null,"Rate","Volume","Charge",null,"Rate","Volume","Charge",null,"$ Change","% Change",null,"Rate","Volume","Charge",null,"$ Change","% Change",null,"Rate","Volume","Charge",null,"$ Change","% Change",null,"Rate","Volume","Charge",null,"$ Change","% Change",null,"Rate","Volume","Charge",null,"$ Change","% Change"]
[null,null,null,null,"($)",null,"($)",null,"($)",null,"($)",null,null,null,null,"($)",null,"($)",null,null,null,null,"($)",null,"($)",null,null,null,null,"($)",null,"($)",null,null,null,null,"($)",null,"($)"]
["Monthly Service Charge",null,"Monthly",null,12.56,1,{"$f":"F23*E23","v":12.56},null,{"$f":"'Rates Summary'!$E$28","v":13.98},1,{"$f":"J23*I23","v":13.98},null,{"$f":"K23-G23","v":1.42},{"$f":"IF((G23)=0,\"\",(M23/G23))","v":0.11305732484076432},null,{"$f":"'Rates Summary'!$F$28","v":18.54},1,{"$f":"Q23*P23","v":18.54},null,{"$f":"R23-K23","v":4.5599999999999987},{"$f":"IF((K23)=0,\"\",(T23/K23))","v":0.32618025751072949},null,{"$f":"'Rates Summary'!$G$28","v":21.88},1,{"$f":"X23*W23","v":21.88},null,{"$f":"Y23-R23","v":3.34},{"$f":"IF((R23)=0,\"\",(AA23/R23))","v":0.18015102481121897},null,{"$f":"'Rates Summary'!$H$28","v":25.35},1,{"$f":"AE23*AD23","v":25.35},null,{"$f":"AF23-Y23","v":3.4700000000000024},{"$f":"IF((Y23)=0,\"\",(AH23/Y23))","v":0.15859232175502755},null,{"$f":"'Rates Summary'!$I$28","v":25.96},1,{"$f":"AL23*AK23","v":25.96},null,{"$f":"AM23-AF23","v":0.60999999999999943},{"$f":"IF((AF23)=0,\"\",(AO23/AF23))","v":2.4063116370808654E-2}]
["Smart Meter (SMIRR) Rate Rider",null,"Monthly",null,2.63,1,{"$f":"F24*E24","v":2.63},null,0,1,{"$f":"J24*I24","v":0},null,{"$f":"K24-G24","v":-2.63},{"$f":"IF((G24)=0,\"\",(M24/G24))","v":-1},null,0,1,{"$f":"Q24*P24","v":0},null,0,{"$f":"IF((K24)=0,\"\",(T24/K24))","v":""},null,0,1,{"$f":"X24*W24","v":0},null,0,{"$f":"IF((R24)=0,\"\",(AA24/R24))","v":""},null,0,1,{"$f":"AE24*AD24","v":0},null,0,{"$f":"IF((Y24)=0,\"\",(AH24/Y24))","v":""},null,0,1,{"$f":"AL24*AK24","v":0},null,0,{"$f":"IF((AF24)=0,\"\",(AO24/AF24))","v":""}]
["Rate Rider Smart Meters Capital (2016)",null,"Monthly",null,0,1,0,null,{"$f":"'Rates Summary'!C10","v":0.25},1,{"$f":"J25*I25","v":0.25},null,{"$f":"K25-G25","v":0.25},null,null,0,1,{"$f":"Q25*P25","v":0},null,-0.25,-1,null,0,1,{"$f":"X25*W25","v":0},null,0,"",null,0,1,{"$f":"AE25*AD25","v":0},null,0,"",null,0,1,{"$f":"AL25*AK25","v":0},null,0,""]
["Rate Rider Recovery of Stranded Meters",null,"Monthly",null,0,1,0,null,{"$f":"'Rates Summary'!$C11","v":3.69},1,3.69,null,3.69,null,null,0,1,0,null,-3.69,-1,null,0,1,0,null,0,"",null,0,1,0,null,0,"",null,0,1,0,null,0,""]
[null,null,null,null,null,1,0,null,null,1,0,null,0,{"$f":"IF((G27)=0,\"\",(M27/G27))","v":""},null,null,1,0,null,0,"",null,null,1,0,null,0,"",null,null,1,0,null,0,"",null,null,1,0,null,0,""]
[null,null,null,null,null,1,0,null,null,1,0,null,0,"",null,null,1,0,null,0,"",null,null,1,0,null,0,"",null,null,1,0,null,0,"",null,null,1,0,null,0,""]
["Distribution Volumetric Rate",null,"per kWh",null,1.54E-2,{"$f":"$E$18","v":2000},{"$f":"F29*E29","v":30.8},null,{"$f":"'Rates Summary'!$E$40","v":1.3899999999999999E-2},{"$f":"$E$18","v":2000},27.799999999999997,null,-3.0000000000000036,-9.7402597402597518E-2,null,{"$f":"'Rates Summary'!$F$40","v":8.2000000000000007E-3},{"$f":"$E$18","v":2000},16.400000000000002,null,-11.399999999999995,-0.410071942446043,null,{"$f":"'Rates Summary'!$G$40","v":4.1999999999999997E-3},{"$f":"$E$18","v":2000},8.4,null,-8.0000000000000018,-0.48780487804878053,null,{"$f":"'Rates Summary'!$H$40","v":0},{"$f":"$E$18","v":2000},0,null,-8.4,-1,null,{"$f":"'Rates Summary'!$I$40","v":0},{"$f":"$E$18","v":2000},0,null,0,""]
["Rate Rider Tax Change (2015)",null,"per kWh",null,-1E-4,{"$f":"$E$18","v":2000},{"$f":"F30*E30","v":-0.2},null,0,{"$f":"$E$18","v":2000},0,null,0.2,{"$f":"IF((G30)=0,\"\",(M30/G30))","v":-1},null,0,{"$f":"$E$18","v":2000},0,null,0,"",null,0,{"$f":"$E$18","v":2000},0,null,0,"",null,0,{"$f":"$E$18","v":2000},0,null,0,"",null,0,{"$f":"$E$18","v":2000},0,null,0,""]
["LRAM VA (2016)",null,"per kWh",null,0,{"$f":"$E$18","v":2000},0,null,{"$f":"'Rates Summary'!C7","v":2.9999999999999997E-4},2000,0.6,null,0.6,null,null,0,2000,0,null,-0.6,{"$f":"IF((K31)=0,\"\",(T31/K31))","v":-1},null,0,2000,0,null,0,"",null,0,2000,0,null,0,"",null,0,2000,0,null,0,""]
["Rate Rider Incremental Capital 2012 True-Up (2016)",null,"per kWh",null,0,{"$f":"$E$18","v":2000},0,null,{"$f":"'Rates Summary'!C9","v":4.0000000000000002E-4},2000,0.8,null,0.8,null,null,0,2000,0,null,-0.8,{"$f":"IF((K32)=0,\"\",(T32/K32))","v":-1},null,0,2000,0,null,0,"",null,0,2000,0,null,0,"",null,0,2000,0,null,0,""]
[null,null,"per kWh",null,0,{"$f":"$E$19","v":0},0,null,null,{"$f":"$E$19","v":0},0,null,0,{"$f":"IF((G33)=0,\"\",(M33/G33))","v":""},null,null,{"$f":"$E$19","v":0},0,null,0,"",null,null,{"$f":"$E$19","v":0},0,null,0,"",null,null,{"$f":"$E$19","v":0},0,null,0,"",null,null,{"$f":"$E$19","v":0},0,null,0,""]
[null,null,null,null,0,2000,0,null,null,2000,0,null,0,"",null,null,2000,0,null,0,"",null,null,2000,0,null,0,"",null,null,2000,0,null,0,"",null,null,2000,0,null,0,""]
[null,null,null,null,null,2000,0,null,null,2000,0,null,0,"",null,null,2000,0,null,0,"",null,null,2000,0,null,0,"",null,null,2000,0,null,0,"",null,null,2000,0,null,0,""]
[null,null,null,null,null,2000,0,null,null,2000,0,null,0,"",null,null,2000,0,null,0,"",null,null,2000,0,null,0,"",null,null,2000,0,null,0,"",null,null,2000,0,null,0,""]
[null,null,null,null,null,2000,0,null,null,2000,0,null,0,"",null,null,2000,0,null,0,"",null,null,2000,0,null,0,"",null,null,2000,0,null,0,"",null,null,2000,0,null,0,""]
[null,null,null,null,null,2000,0,null,null,2000,0,null,0,"",null,null,2000,0,null,0,"",null,null,2000,0,null,0,"",null,null,2000,0,null,0,"",null,null,2000,0,null,0,""]
["Sub-Total A (excluding pass through)",null,null,null,null,null,{"$f":"SUM(G23:G38)","v":45.79},null,null,null,{"$f":"SUM(K23:K38)","v":47.12},null,{"$f":"K39-G39","v":1.3299999999999983},2.9045643153526934E-2,null,null,null,{"$f":"SUM(R23:R38)","v":34.94},null,-12.18,-0.25848896434634977,null,null,null,{"$f":"SUM(Y23:Y38)","v":30.28},null,-4.6599999999999966,-0.13337149398969653,null,null,null,{"$f":"SUM(AF23:AF38)","v":25.35},null,-4.93,-0.1628137384412153,null,null,null,{"$f":"SUM(AM23:AM38)","v":25.96},null,0.60999999999999943,2.4063116370808654E-2]
["Deferral/Variance Account Disposition Rate Rider (2016)",null,"per kWh",null,0,{"$f":"$E$18","v":2000},{"$f":"F40*E40","v":0},null,{"$f":"'Rates Summary'!C5","v":6.9999999999999999E-4},{"$f":"$E$18","v":2000},{"$f":"J40*I40","v":1.4},null,{"$f":"K40-G40","v":1.4},{"$f":"IF((G40)=0,\"\",(M40/G40))","v":""},null,0,{"$f":"$E$18","v":2000},{"$f":"Q40*P40","v":0},null,-1.4,-1,null,0,{"$f":"$E$18","v":2000},{"$f":"X40*W40","v":0},null,0,"",null,0,{"$f":"$E$18","v":2000},{"$f":"AE40*AD40","v":0},null,0,"",null,0,{"$f":"$E$18","v":2000},{"$f":"AL40*AK40","v":0},null,0,""]
[null,null,null,null,null,{"$f":"$E$18","v":2000},{"$f":"F41*E41","v":0},null,{"$f":"E41","v":0},{"$f":"$E$18","v":2000},{"$f":"J41*I41","v":0},null,{"$f":"K41-G41","v":0},{"$f":"IF((G41)=0,\"\",(M41/G41))","v":""},null,null,{"$f":"$E$18","v":2000},{"$f":"Q41*P41","v":0},null,0,"",null,null,{"$f":"$E$18","v":2000},{"$f":"X41*W41","v":0},null,0,"",null,null,{"$f":"$E$18","v":2000},{"$f":"AE41*AD41","v":0},null,0,"",null,null,{"$f":"$E$18","v":2000},{"$f":"AL41*AK41","v":0},null,0,""]
["Rate Rider CGAAP Account 1576 (2016)",null,"per kWh",null,0,2000,0,null,{"$f":"'Rates Summary'!$C$8","v":-1.0800000000000001E-2},2000,-21.6,null,-21.6,"",null,0,2000,0,null,21.6,-1,null,{"$f":"P42","v":0},2000,0,null,0,"",null,{"$f":"W42","v":0},2000,0,null,0,"",null,{"$f":"AD42","v":0},2000,0,null,0,""]
["Disposition of Global Adjustment (2015)  \nApplicable to Non-RPP Customers",null,"per kWh",null,1.5599999999999999E-2,0,0,null,0,2000,0,null,0,"",null,0,2000,0,null,0,"",null,0,2000,0,null,0,"",null,0,2000,0,null,0,"",null,0,2000,0,null,0,""]
["Disposition of Global Adjustment (2016) \nApplicable to Non-RPP Customers",null,"per kWh",null,0,2000,0,null,{"$f":"'Rates Summary'!C6","v":2.0500000000000001E-2},0,0,null,0,"",null,0,2000,0,null,0,"",null,0,2000,0,null,0,"",null,0,2000,0,null,0,"",null,0,2000,0,null,0,""]
["Low Voltage Service Charge",null,"per kWh",null,6.9999999999999999E-4,2000,{"$f":"F45*E45","v":1.4},null,{"$f":"'Rates Summary'!C15","v":1.1999999999999999E-3},2000,{"$f":"J45*I45","v":2.4},null,{"$f":"K45-G45","v":1},{"$f":"IF((G45)=0,\"\",(M45/G45))","v":0.7142857142857143},null,{"$f":"I45","v":1.1999999999999999E-3},2000,{"$f":"Q45*P45","v":2.4},null,{"$f":"R45-K45","v":0},0,null,{"$f":"P45","v":1.1999999999999999E-3},2000,{"$f":"X45*W45","v":2.4},null,{"$f":"Y45-R45","v":0},0,null,{"$f":"W45","v":1.1999999999999999E-3},2000,{"$f":"AE45*AD45","v":2.4},null,{"$f":"AF45-Y45","v":0},0,null,{"$f":"AD45","v":1.1999999999999999E-3},2000,{"$f":"AL45*AK45","v":2.4},null,{"$f":"AM45-AF45","v":0},0]
["Line Losses on Cost of Power",null,"per kWh",null,{"$f":"IF(ISBLANK(C16)=TRUE, 0, IF(C16=\"TOU\", 0.64*$E$56+0.18*$E$57+0.18*$E$58, IF(AND(C16=\"non-TOU\", F60>0), E60,E59)))","v":0.10766000000000001},{"$f":"$E$18*(1+$E$75)-$E$18","v":68.800000000000182},7.4070080000000198,null,{"$f":"E46","v":0.10766000000000001},{"$f":"$E$18*(1+$I$75)-$E$18","v":78.599999999999909},8.4620759999999908,null,1.055067999999971,0.14244186046511198,null,{"$f":"I46","v":0.10766000000000001},{"$f":"$E$18*(1+$I$75)-$E$18","v":78.599999999999909},{"$f":"Q46*P46","v":8.4620759999999908},null,{"$f":"R46-K46","v":0},0,null,{"$f":"P46","v":0.10766000000000001},{"$f":"$E$18*(1+$I$75)-$E$18","v":78.599999999999909},{"$f":"X46*W46","v":8.4620759999999908},null,{"$f":"Y46-R46","v":0},0,null,{"$f":"W46","v":0.10766000000000001},{"$f":"$E$18*(1+$I$75)-$E$18","v":78.599999999999909},{"$f":"AE46*AD46","v":8.4620759999999908},null,{"$f":"AF46-Y46","v":0},0,null,{"$f":"AD46","v":0.10766000000000001},{"$f":"$E$18*(1+$I$75)-$E$18","v":78.599999999999909},{"$f":"AL46*AK46","v":8.4620759999999908},null,{"$f":"AM46-AF46","v":0},0]
["Smart Meter Entity Charge",null,"Monthly",null,0.79,1,{"$f":"F47*E47","v":0.79},null,0.79,1,{"$f":"J47*I47","v":0.79},null,{"$f":"K47-G47","v":0},null,null,0.79,1,{"$f":"Q47*P47","v":0.79},null,{"$f":"R47-K47","v":0},0,null,0.79,1,{"$f":"X47*W47","v":0.79},null,{"$f":"Y47-R47","v":0},0,null,0,1,{"$f":"AE47*AD47","v":0},null,{"$f":"AF47-Y47","v":-0.79},-1,null,0,1,{"$f":"AL47*AK47","v":0},null,{"$f":"AM47-AF47","v":0},""]
["Sub-Total B - Distribution (includes Sub-Total A)",null,null,null,null,null,{"$f":"SUM(G40:G47)+G39","v":55.387008000000023},null,null,null,{"$f":"SUM(K40:K47)+K39","v":38.572075999999981},null,{"$f":"K48-G48","v":-16.814932000000042},{"$f":"IF((G48)=0,\"\",(M48/G48))","v":-0.30358982380850097},null,null,null,{"$f":"SUM(R40:R47)+R39","v":46.592075999999992},null,{"$f":"R48-K48","v":8.0200000000000102},0.2079224359093354,null,null,null,{"$f":"SUM(Y40:Y47)+Y39","v":41.932075999999995},null,{"$f":"Y48-R48","v":-4.6599999999999966},-0.10001700718379661,null,null,null,{"$f":"SUM(AF40:AF47)+AF39","v":36.212075999999996},null,{"$f":"AF48-Y48","v":-5.7199999999999989},-0.13641108539438876,null,null,null,{"$f":"SUM(AM40:AM47)+AM39","v":36.822075999999996},null,{"$f":"AM48-AF48","v":0.60999999999999943},1.6845209316361742E-2]
["RTSR - Network",null,"per kWh",null,6.7000000000000002E-3,{"$f":"$E$18*(1+$E$75)","v":2068.8000000000002},{"$f":"F49*E49","v":13.860960000000002},null,{"$f":"'Rates Summary'!C17","v":7.1000000000000004E-3},{"$f":"$E$18*(1+$I$75)","v":2078.6},{"$f":"J49*I49","v":14.75806},null,0.89709999999999823,6.4721346861977683E-2,null,{"$f":"I49","v":7.1000000000000004E-3},{"$f":"$E$18*(1+P75)","v":2078.6},{"$f":"Q49*P49","v":14.75806},null,0,0,null,{"$f":"P49","v":7.1000000000000004E-3},{"$f":"$E$18*(1+W75)","v":2078.6},{"$f":"X49*W49","v":14.75806},null,0,0,null,{"$f":"W49","v":7.1000000000000004E-3},{"$f":"$E$18*(1+AD75)","v":2078.6},{"$f":"AE49*AD49","v":14.75806},null,0,0,null,{"$f":"AD49","v":7.1000000000000004E-3},{"$f":"$E$18*(1+AK75)","v":2078.6},{"$f":"AL49*AK49","v":14.75806},null,0,0]
["RTSR - Line and Transformation Connection",null,"per kWh",null,5.1000000000000004E-3,{"$f":"F49","v":2068.8000000000002},{"$f":"F50*E50","v":10.550880000000001},null,{"$f":"'Rates Summary'!C18","v":5.5999999999999999E-3},{"$f":"J49","v":2078.6},{"$f":"J50*I50","v":11.64016},null,1.0892799999999987,0.10324067755485784,null,{"$f":"I50","v":5.5999999999999999E-3},{"$f":"Q49","v":2078.6},{"$f":"Q50*P50","v":11.64016},null,0,0,null,{"$f":"P50","v":5.5999999999999999E-3},{"$f":"X49","v":2078.6},{"$f":"X50*W50","v":11.64016},null,0,0,null,{"$f":"W50","v":5.5999999999999999E-3},{"$f":"AE49","v":2078.6},{"$f":"AE50*AD50","v":11.64016},null,0,0,null,{"$f":"AD50","v":5.5999999999999999E-3},{"$f":"AL49","v":2078.6},{"$f":"AL50*AK50","v":11.64016},null,0,0]
["Sub-Total C - Delivery (including Sub-Total B)",null,null,null,null,null,{"$f":"SUM(G48:G50)","v":79.798848000000035},null,null,null,{"$f":"SUM(K48:K50)","v":64.970295999999976},null,-14.828552000000059,-0.18582413620808225,null,null,null,{"$f":"SUM(R48:R50)","v":72.990295999999987},null,8.0200000000000102,0.12344102603442061,null,null,null,{"$f":"SUM(Y48:Y50)","v":68.33029599999999},null,-4.6599999999999966,-6.3844103331215388E-2,null,null,null,{"$f":"SUM(AF48:AF50)","v":62.610295999999998},null,-5.7199999999999918,-8.3711037926719828E-2,null,null,null,{"$f":"SUM(AM48:AM50)","v":63.220295999999998},null,0.60999999999999943,9.7428065185955915E-3]
["Wholesale Market Service Charge (WMSC)",null,"per kWh",null,4.4000000000000003E-3,{"$f":"F50","v":2068.8000000000002},{"$f":"F52*E52","v":9.1027200000000015},null,{"$f":"'Rates Summary'!C19","v":4.4000000000000003E-3},{"$f":"J50","v":2078.6},{"$f":"J52*I52","v":9.1458399999999997},null,4.3119999999998271E-2,4.7370456303169016E-3,null,{"$f":"I52","v":4.4000000000000003E-3},{"$f":"Q50","v":2078.6},{"$f":"Q52*P52","v":9.1458399999999997},null,0,0,null,{"$f":"P52","v":4.4000000000000003E-3},{"$f":"X50","v":2078.6},{"$f":"X52*W52","v":9.1458399999999997},null,0,0,null,{"$f":"W52","v":4.4000000000000003E-3},{"$f":"AE50","v":2078.6},{"$f":"AE52*AD52","v":9.1458399999999997},null,0,0,null,{"$f":"AD52","v":4.4000000000000003E-3},{"$f":"AL50","v":2078.6},{"$f":"AL52*AK52","v":9.1458399999999997},null,0,0]
["Rural and Remote Rate Protection (RRRP)",null,"per kWh",null,1.2999999999999999E-3,{"$f":"F50","v":2068.8000000000002},2.6894400000000003,null,{"$f":"'Rates Summary'!C20","v":1.2999999999999999E-3},{"$f":"J50","v":2078.6},2.7021799999999998,null,1.2739999999999529E-2,4.7370456303169163E-3,null,{"$f":"I53","v":1.2999999999999999E-3},{"$f":"Q50","v":2078.6},2.7021799999999998,null,0,0,null,{"$f":"P53","v":1.2999999999999999E-3},{"$f":"X50","v":2078.6},2.7021799999999998,null,0,0,null,{"$f":"W53","v":1.2999999999999999E-3},{"$f":"AE50","v":2078.6},2.7021799999999998,null,0,0,null,{"$f":"AD53","v":1.2999999999999999E-3},{"$f":"AL50","v":2078.6},2.7021799999999998,null,0,0]
["Standard Supply Service Charge",null,"Monthly",null,0.25,1,0.25,null,{"$f":"'Rates Summary'!C21","v":0.25},1,0.25,null,0,0,null,{"$f":"I54","v":0.25},1,0.25,null,0,0,null,{"$f":"P54","v":0.25},1,0.25,null,0,0,null,{"$f":"W54","v":0.25},1,0.25,null,0,0,null,{"$f":"AD54","v":0.25},1,0.25,null,0,0]
["Debt Retirement Charge (DRC)",null,"per kWh",null,7.0000000000000001E-3,{"$f":"E18","v":2000},14,null,0,{"$f":"E18","v":2000},0,null,-14,-1,null,0,{"$f":"J55","v":2000},0,null,0,"",null,0,{"$f":"Q55","v":2000},0,null,0,"",null,0,{"$f":"X55","v":2000},0,null,0,"",null,0,{"$f":"AE55","v":2000},0,null,0,""]
["TOU - Off Peak",null,"per kWh",null,8.3000000000000004E-2,{"$f":"0.64*$E$18","v":1280},106.24000000000001,null,{"$f":"E56","v":8.3000000000000004E-2},{"$f":"F56","v":1280},106.24000000000001,null,0,0,null,{"$f":"I56","v":8.3000000000000004E-2},{"$f":"J56","v":1280},106.24000000000001,null,0,0,null,{"$f":"P56","v":8.3000000000000004E-2},{"$f":"Q56","v":1280},106.24000000000001,null,0,0,null,{"$f":"W56","v":8.3000000000000004E-2},{"$f":"X56","v":1280},106.24000000000001,null,0,0,null,{"$f":"AD56","v":8.3000000000000004E-2},{"$f":"AE56","v":1280},106.24000000000001,null,0,0]
["TOU - Mid Peak",null,"per kWh",null,0.128,{"$f":"0.18*$E$18","v":360},46.08,null,{"$f":"E57","v":0.128},{"$f":"F57","v":360},46.08,null,0,0,null,{"$f":"I57","v":0.128},360,46.08,null,0,0,null,{"$f":"P57","v":0.128},360,46.08,null,0,0,null,{"$f":"W57","v":0.128},360,46.08,null,0,0,null,{"$f":"AD57","v":0.128},360,46.08,null,0,0]
["TOU - On Peak",null,"per kWh",null,0.17499999999999999,{"$f":"0.18*$E$18","v":360},62.999999999999993,null,0.17499999999999999,{"$f":"F58","v":360},62.999999999999993,null,0,0,null,0.17499999999999999,360,62.999999999999993,null,0,0,null,0.17499999999999999,360,62.999999999999993,null,0,0,null,0.17499999999999999,360,62.999999999999993,null,0,0,null,0.17499999999999999,360,62.999999999999993,null,0,0]
["Energy - RPP - Tier 1",null,"per kWh",null,9.9000000000000005E-2,{"$f":"IF(AND($S$1=1, E18>=600), 600, IF(AND($S$1=1, AND(E18<600, E18>=0)), E18, IF(AND($S$1=2, E18>=1000), 1000, IF(AND($S$1=2, AND(E18<1000, E18>=0)), E18))))","v":600},{"$f":"F59*E59","v":59.400000000000006},null,9.9000000000000005E-2,{"$f":"F59","v":600},{"$f":"J59*I59","v":59.400000000000006},null,0,0,null,9.9000000000000005E-2,600,{"$f":"Q59*P59","v":59.400000000000006},null,0,0,null,9.9000000000000005E-2,600,{"$f":"X59*W59","v":59.400000000000006},null,0,0,null,9.9000000000000005E-2,600,{"$f":"AE59*AD59","v":59.400000000000006},null,0,0,null,9.9000000000000005E-2,600,{"$f":"AL59*AK59","v":59.400000000000006},null,0,0]
["Energy - RPP - Tier 2",null,"per kWh",null,0.11600000000000001,{"$f":"IF(AND($S$1=1, E18>=600), E18-600, IF(AND($S$1=1, AND(E18<600, E18>=0)), 0, IF(AND($S$1=2, E18>=1000), E18-1000, IF(AND($S$1=2, AND(E18<1000, E18>=0)), 0))))","v":1400},{"$f":"F60*E60","v":162.4},null,0.11600000000000001,{"$f":"F60","v":1400},{"$f":"J60*I60","v":162.4},null,0,0,null,0.11600000000000001,1400,{"$f":"Q60*P60","v":162.4},null,0,0,null,0.11600000000000001,1400,{"$f":"X60*W60","v":162.4},null,0,0,null,0.11600000000000001,1400,{"$f":"AE60*AD60","v":162.4},null,0,0,null,0.11600000000000001,1400,{"$f":"AL60*AK60","v":162.4},null,0,0]
[null,null,null,null,null,null,null,null,null,null,null,null,null,null,null,null,null,null,null,null,"",null,null,null,null,null,null,"",null,null,null,null,null,null,"",null,null,null,null,null,null,""]
["Total Bill on TOU (before Taxes)",null,null,null,null,null,{"$f":"SUM(G52:G58,G51)","v":321.16100800000004},null,null,null,{"$f":"SUM(K52:K58,K51)","v":292.38831599999997},null,{"$f":"K62-G62","v":-28.772692000000063},{"$f":"IF((G62)=0,\"\",(M62/G62))","v":-8.9589617927715748E-2},null,null,null,{"$f":"SUM(R52:R58,R51)","v":300.40831600000001},null,{"$f":"R62-K62","v":8.0200000000000387},2.7429276619931827E-2,null,null,null,{"$f":"SUM(Y52:Y58,Y51)","v":295.74831599999999},null,{"$f":"Y62-R62","v":-4.660000000000025},-1.5512220374085865E-2,null,null,null,{"$f":"SUM(AF52:AF58,AF51)","v":290.02831600000002},null,{"$f":"AF62-Y62","v":-5.7199999999999704},-1.9340769466967889E-2,null,null,null,{"$f":"SUM(AM52:AM58,AM51)","v":290.63831600000003},null,{"$f":"AM62-AF62","v":0.61000000000001364},2.1032429123231319E-3]
["HST",null,null,null,0.13,null,{"$f":"G62*E63","v":41.750931040000005},null,0.13,null,{"$f":"K62*I63","v":38.010481079999998},null,-3.7404499600000065,-8.9589617927715706E-2,null,0.13,null,{"$f":"R62*P63","v":39.053081080000005},null,{"$f":"R63-K63","v":1.0426000000000073},2.7429276619931886E-2,null,0.13,null,{"$f":"Y62*W63","v":38.447281080000003},null,{"$f":"Y63-R63","v":-0.60580000000000211},-1.5512220374085835E-2,null,0.13,null,{"$f":"AF62*AD63","v":37.703681080000003},null,{"$f":"AF63-Y63","v":-0.7436000000000007},-1.9340769466968003E-2,null,0.13,null,{"$f":"AM62*AK63","v":37.782981080000006},null,{"$f":"AM63-AF63","v":7.9300000000003479E-2},2.103242912323177E-3]
["Total Bill (including HST)",null,null,null,null,null,{"$f":"G62+G63","v":362.91193904000005},null,null,null,{"$f":"K62+K63","v":330.39879707999995},null,-32.513141960000098,-8.9589617927715817E-2,null,null,null,{"$f":"R62+R63","v":339.46139708000004},null,9.0626000000000886,2.7429276619931966E-2,null,null,null,{"$f":"Y62+Y63","v":334.19559707999997},null,-5.2658000000000698,-1.5512220374085986E-2,null,null,null,{"$f":"AF62+AF63","v":327.73199708000004},null,-6.4635999999999285,-1.9340769466967774E-2,null,null,null,{"$f":"AM62+AM63","v":328.42129708000004},null,0.68930000000000291,2.1032429123230938E-3]
["Ontario Clean Energy Benefit 1",null,null,null,null,null,{"$f":"ROUND(-G64*10%,2)","v":-36.29},null,null,null,0,null,36.29,-1,null,null,null,0,null,0,"",null,null,null,0,null,0,"",null,null,null,0,null,0,"",null,null,null,0,null,0,""]
["Total Bill on TOU (including OCEB)",null,null,null,null,null,{"$f":"G64+G65","v":326.62193904000003},null,null,null,{"$f":"K64+K65","v":330.39879707999995},null,3.7768580399999223,1.1563393601485497E-2,null,null,null,{"$f":"R64+R65","v":339.46139708000004},null,9.0626000000000886,2.7429276619931966E-2,null,null,null,{"$f":"Y64+Y65","v":334.19559707999997},null,-5.2658000000000698,-1.5512220374085986E-2,null,null,null,{"$f":"AF64+AF65","v":327.73199708000004},null,-6.4635999999999285,-1.9340769466967774E-2,null,null,null,{"$f":"AM64+AM65","v":328.42129708000004},null,0.68930000000000291,2.1032429123230938E-3]
[null,null,null,null,null,null,null,null,null,null,null,null,null,null,null,null,null,null,null,null,"",null,null,null,null,null,null,"",null,null,null,null,null,null,"",null,null,null,null,null,null,""]
["Total Bill on RPP (before Taxes)",null,null,null,null,null,{"$f":"SUM(G59:G60,G52:G55,G51)","v":327.64100800000006},null,null,null,{"$f":"SUM(K59:K60,K52:K55,K51)","v":298.86831599999999},null,{"$f":"K68-G68","v":-28.772692000000063},{"$f":"IF((G68)=0,\"\",(M68/G68))","v":-8.7817737393849238E-2},null,null,null,{"$f":"SUM(R59:R60,R52:R55,R51)","v":306.88831599999997},null,{"$f":"R68-K68","v":8.0199999999999818},2.6834560810387081E-2,null,null,null,{"$f":"SUM(Y59:Y60,Y52:Y55,Y51)","v":302.22831600000001},null,{"$f":"Y68-R68","v":-4.6599999999999682},-1.518467715141025E-2,null,null,null,{"$f":"SUM(AF59:AF60,AF52:AF55,AF51)","v":296.50831599999998},null,{"$f":"AF68-Y68","v":-5.7200000000000273},-1.8926088977050143E-2,null,null,null,{"$f":"SUM(AM59:AM60,AM52:AM55,AM51)","v":297.11831599999999},null,{"$f":"AM68-AF68","v":0.61000000000001364},2.0572778808673068E-3]
["HST",null,null,null,0.13,null,{"$f":"G68*E69","v":42.59333104000001},null,0.13,null,{"$f":"K68*I69","v":38.852881080000003},null,-3.7404499600000065,{"$f":"IF((G69)=0,\"\",(M69/G69))","v":-8.7817737393849196E-2},null,0.13,null,{"$f":"R68*P69","v":39.895481079999996},null,{"$f":"R69-K69","v":1.0425999999999931},2.6834560810386959E-2,null,0.13,null,{"$f":"Y68*W69","v":39.289681080000001},null,{"$f":"Y69-R69","v":-0.60579999999999501},-1.5184677151410229E-2,null,0.13,null,{"$f":"AF68*AD69","v":38.54608108},null,{"$f":"AF69-Y69","v":-0.7436000000000007},-1.892608897705007E-2,null,0.13,null,{"$f":"AM68*AK69","v":38.625381080000004},null,{"$f":"AM69-AF69","v":7.9300000000003479E-2},2.0572778808673506E-3]
["Total Bill (including HST)",null,null,null,null,null,{"$f":"G68+G69","v":370.23433904000007},null,null,null,{"$f":"K68+K69","v":337.72119708000002},null,-32.513141960000041,-8.7817737393849155E-2,null,null,null,{"$f":"R68+R69","v":346.78379708},null,9.0625999999999749,2.6834560810387063E-2,null,null,null,{"$f":"Y68+Y69","v":341.51799707999999},null,-5.2658000000000129,-1.518467715141039E-2,null,null,null,{"$f":"AF68+AF69","v":335.05439708},null,-6.4635999999999854,-1.8926088977050011E-2,null,null,null,{"$f":"AM68+AM69","v":335.74369708},null,0.68930000000000291,2.057277880867269E-3]
["Ontario Clean Energy Benefit 1",null,null,null,null,null,{"$f":"ROUND(-G70*10%,2)","v":-37.020000000000003},null,null,null,0,null,37.020000000000003,-1,null,null,null,0,null,0,"",null,null,null,0,null,0,"",null,null,null,0,null,0,"",null,null,null,0,null,0,""]
["Total Bill on RPP (including OCEB)",null,null,null,null,null,{"$f":"SUM(G70:G71)","v":333.21433904000008},null,null,null,{"$f":"SUM(K70:K71)","v":337.72119708000002},null,4.5068580399999405,1.352540245712212E-2,null,null,null,{"$f":"SUM(R70:R71)","v":346.78379708},null,9.0625999999999749,2.6834560810387063E-2,null,null,null,{"$f":"SUM(Y70:Y71)","v":341.51799707999999},null,-5.2658000000000129,-1.518467715141039E-2,null,null,null,{"$f":"SUM(AF70:AF71)","v":335.05439708},null,-6.4635999999999854,-1.8926088977050011E-2,null,null,null,{"$f":"SUM(AM70:AM71)","v":335.74369708},null,0.68930000000000291,2.057277880867269E-3]
[null,null,null,null,null,null,null,null,null,null,null,null,null,null,null,null,null,null,null,null,null,null,null,null,null,null,null,"",null,null,null,null,null,null,"",null,null,null,null,null,null,""]
[]
["Loss Factor (%)",null,null,null,3.44E-2,null,null,null,3.9300000000000002E-2,null,null,null,null,null,null,3.9300000000000002E-2,null,null,null,null,null,null,3.9300000000000002E-2,null,null,null,null,null,null,3.9300000000000002E-2,null,null,null,null,null,null,3.9300000000000002E-2]
[]
["Distribution Excluding Rate Riders",null,null,null,"2015 Current Board-Approved",null,null,null,"2016 Test Year 1\nProposed",null,null,null,"Impact\n2016 TEST vs. \n2015 Bridge",null,null,"2017 Test Year 2\nProposed",null,null,null,"Impact\n2017 TEST 2 vs. \n2016 Test 1",null,null,"2018 Test Year 3\nProposed",null,null,null,"Impact\n2018 TEST 3 vs. \n2017 Test 2",null,null,"2019 Test Year 4\nProposed",null,null,null,"Impact\n2019 TEST 4 vs. \n2018 Test 3",null,null,"2020 Test Year 5 \nProposed",null,null,null,"Impact\n2020 TEST 5 vs. \n2019 Test 4"]
[null,null,"Charge Unit",null,"Rate","Volume","Charge",null,"Rate","Volume","Charge",null,"$ Change","% Change",null,"Rate","Volume","Charge",null,"$ Change","% Change",null,"Rate","Volume","Charge",null,"$ Change","% Change",null,"Rate","Volume","Charge",null,"$ Change","% Change",null,"Rate","Volume","Charge",null,"$ Change","% Change"]
[null,null,null,null,"($)",null,"($)",null,"($)",null,"($)",null,null,null,null,"($)",null,"($)",null,null,null,null,"($)",null,"($)",null,null,null,null,"($)",null,"($)",null,null,null,null,"($)",null,"($)"]
["Monthly Service Charge",null,"Monthly",null,12.56,1,{"$f":"F80*E80","v":12.56},null,{"$f":"'Rates Summary'!$E$28","v":13.98},1,{"$f":"J80*I80","v":13.98},null,{"$f":"K80-G80","v":1.42},{"$f":"IF((G80)=0,\"\",(M80/G80))","v":0.11305732484076432},null,{"$f":"'Rates Summary'!$F$28","v":18.54},1,{"$f":"Q80*P80","v":18.54},null,{"$f":"R80-K80","v":4.5599999999999987},{"$f":"IF((K80)=0,\"\",(T80/K80))","v":0.32618025751072949},null,{"$f":"'Rates Summary'!$G$28","v":21.88},1,{"$f":"X80*W80","v":21.88},null,{"$f":"Y80-R80","v":3.34},{"$f":"IF((R80)=0,\"\",(AA80/R80))","v":0.18015102481121897},null,{"$f":"'Rates Summary'!$H$28","v":25.35},1,{"$f":"AE80*AD80","v":25.35},null,{"$f":"AF80-Y80","v":3.4700000000000024},{"$f":"IF((Y80)=0,\"\",(AH80/Y80))","v":0.15859232175502755},null,{"$f":"'Rates Summary'!$I$28","v":25.96},1,{"$f":"AL80*AK80","v":25.96},null,{"$f":"AM80-AF80","v":0.60999999999999943},{"$f":"IF((AF80)=0,\"\",(AO80/AF80))","v":2.4063116370808654E-2}]
["Distribution Volumetric Rate",null,"per kWh",null,1.54E-2,{"$f":"$E$18","v":2000},{"$f":"F81*E81","v":30.8},null,{"$f":"'Rates Summary'!$E$40","v":1.3899999999999999E-2},{"$f":"$E$18","v":2000},{"$f":"J81*I81","v":27.799999999999997},null,{"$f":"K81-G81","v":-3.0000000000000036},{"$f":"IF((G81)=0,\"\",(M81/G81))","v":-9.7402597402597518E-2},null,{"$f":"'Rates Summary'!$F$40","v":8.2000000000000007E-3},{"$f":"$E$18","v":2000},{"$f":"Q81*P81","v":16.400000000000002},null,-11.399999999999995,{"$f":"IF((K81)=0,\"\",(T81/K81))","v":-0.410071942446043},null,{"$f":"'Rates Summary'!$G$40","v":4.1999999999999997E-3},{"$f":"$E$18","v":2000},{"$f":"X81*W81","v":8.4},null,-8.0000000000000018,{"$f":"IF((R81)=0,\"\",(AA81/R81))","v":-0.48780487804878053},null,{"$f":"'Rates Summary'!$H$40","v":0},{"$f":"$E$18","v":2000},{"$f":"AE81*AD81","v":0},null,-8.4,{"$f":"IF((Y81)=0,\"\",(AH81/Y81))","v":-1},null,{"$f":"'Rates Summary'!$I$40","v":0},{"$f":"$E$18","v":2000},{"$f":"AL81*AK81","v":0},null,0,{"$f":"IF((AF81)=0,\"\",(AO81/AF81))","v":""}]
["\"Regular\" Distribution Only",null,null,null,null,null,{"$f":"SUM(G80:G81)","v":43.36},null,null,null,{"$f":"SUM(K80:K81)","v":41.78},null,-1.5799999999999983,-3.6439114391143876E-2,null,null,null,{"$f":"SUM(R80:R81)","v":34.94},null,-6.8400000000000034,-0.16371469602680716,null,null,null,{"$f":"SUM(Y80:Y81)","v":30.28},null,-4.6599999999999966,-0.13337149398969653,null,null,null,{"$f":"SUM(AF80:AF81)","v":25.35},null,-4.93,-0.1628137384412153,null,null,null,{"$f":"SUM(AM80:AM81)","v":25.96},null,0.60999999999999943,2.4063116370808654E-2]
[]
[null,"Residential (kWh) - 100, 250, 500, 800, 1000, 1500, 2000"]
[null,"GS<50kW (kWh) - 1000, 2000, 5000, 10000, 15000"]
[null,"GS>50kW (kW) - 60, 100, 500, 1000"]
[null,"Large User - range appropriate for utility"]
[null,"Lighting Classes and USL - 150 kWh and 1 kW, range appropriate for utility."]
[]
[null,null,"Note that cells with the highlighted color shown to the left indicate quantities that are loss adjusted."]

{"sheet":"Bill Impact GS < 50 2000kWh","index":10,"n_rows":91,"n_cols":42,"rows_kept":91,"cut":false,"hidden":false,"merged":[[76,40,76,41],[77,2,78,2],[77,12,78,12],[77,13,78,13],[77,19,78,19],[77,20,78,20],[77,26,78,26],[77,27,78,27],[77,33,78,33],[77,34,78,34],[77,40,78,40],[77,41,78,41],[76,22,76,24],[76,26,76,27],[76,29,76,31],[76,33,76,34],[76,36,76,38],[76,4,76,6],[76,8,76,10],[76,12,76,13],[76,15,76,17],[76,19,76,20],[2,0,2,9],[9,0,9,13],[10,0,10,13],[65,0,65,2],[70,0,70,2],[71,0,71,2],[20,27,21,27],[20,33,21,33],[20,34,21,34],[20,40,21,40],[20,41,21,41],[64,0,64,2],[20,2,21,2],[20,12,21,12],[20,13,21,13],[20,19,21,19],[20,20,21,20],[20,26,21,26],[19,40,19,41],[13,2,13,13],[13,15,13,26],[19,4,19,6],[19,8,19,10],[19,12,19,13],[19,15,19,17],[19,19,19,20],[19,22,19,24],[19,26,19,27],[19,29,19,31],[19,33,19,34],[19,36,19,38]]}
[null,null,null,null,null,null,null,null,null,null,null,null,"File Number:",{"$f":"EBNUMBER","v":"EB-2015-0083"},null,null,null,null,1]
[null,null,null,null,null,null,null,null,null,null,null,null,"Exhibit:",{"$f":"'Bill Impact Resi 204kWh'!$N$2","v":8}]
[null,null,null,null,null,null,null,null,null,null,null,null,"Tab:",{"$f":"'Bill Impact Resi 204kWh'!$N$3","v":4}]
[null,null,null,null,null,null,null,null,null,null,null,null,"Schedule:",{"$f":"'Bill Impact Resi 204kWh'!$N$4","v":3}]
[null,null,null,null,null,null,null,null,null,null,null,null,"Page:"]
[]
[null,null,null,null,null,null,null,null,null,null,null,null,"Date:",{"$f":"'Bill Impact Resi 204kWh'!$N$7","v":"Settlement"}]
[]
[]
["Appendix 2-W"]
["Bill Impacts"]
[]
[]
["Customer Class:",null,"General Service Less Than 50 kW",null,null,null,null,null,null,null,null,null,null,null,null,{"$f":"C14","v":"General Service Less Than 50 kW"},null,null,null,null,null,null,null,null,null,null,null,null,null,null,null,null,null,null,null,null,{"$f":"P14","v":"General Service Less Than 50 kW"}]
[]
["TOU / non-TOU:",null,"TOU"]
[]
[null,null,"Consumption",null,2000," kWh"]
[]
[null,null,null,null,"2015 Current Board-Approved",null,null,null,"2016 Test Year 1\nProposed",null,null,null,"Impact\n2016 TEST vs. \n2015 Bridge",null,null,"2017 Test Year 2\nProposed",null,null,null,"Impact\n2017 TEST 2 vs. \n2016 Test 1",null,null,"2018 Test Year 3\nProposed",null,null,null,"Impact\n2018 TEST 3 vs. \n2017 Test 2",null,null,"2019 Test Year 4\nProposed",null,null,null,"Impact\n2019 TEST 4 vs. \n2018 Test 3",null,null,"2020 Test Year 5 \nProposed",null,null,null,"Impact\n2019 TEST 5 vs. \n2019 Test 4"]
[null,null,"Charge Unit",null,"Rate","Volume","Charge",null,"Rate","Volume","Charge",null,"$ Change","% Change",null,"Rate","Volume","Charge",null,"$ Change","% Change",null,"Rate","Volume","Charge",null,"$ Change","% Change",null,"Rate","Volume","Charge",null,"$ Change","% Change",null,"Rate","Volume","Charge",null,"$ Change","% Change"]
[null,null,null,null,"($)",null,"($)",null,"($)",null,"($)",null,null,null,null,"($)",null,"($)",null,null,null,null,"($)",null,"($)",null,null,null,null,"($)",null,"($)",null,null,null,null,"($)",null,"($)"]
["Monthly Service Charge",null,"Monthly",null,25.85,1,{"$f":"F23*E23","v":25.85},null,{"$f":"'Rates Summary'!$E$29","v":14.27},1,{"$f":"J23*I23","v":14.27},null,{"$f":"K23-G23","v":-11.580000000000002},{"$f":"IF((G23)=0,\"\",(M23/G23))","v":-0.44796905222437144},null,{"$f":"'Rates Summary'!$F$29","v":14.59},1,{"$f":"Q23*P23","v":14.59},null,{"$f":"R23-K23","v":0.32000000000000028},{"$f":"IF((K23)=0,\"\",(T23/K23))","v":2.2424667133847252E-2},null,{"$f":"'Rates Summary'!$G$29","v":14.94},1,{"$f":"X23*W23","v":14.94},null,{"$f":"Y23-R23","v":0.34999999999999964},{"$f":"IF((R23)=0,\"\",(AA23/R23))","v":2.3989033584646994E-2},null,{"$f":"'Rates Summary'!$H$29","v":15.22},1,{"$f":"AE23*AD23","v":15.22},null,{"$f":"AF23-Y23","v":0.28000000000000114},{"$f":"IF((Y23)=0,\"\",(AH23/Y23))","v":1.8741633199464602E-2},null,{"$f":"'Rates Summary'!$I$29","v":15.4},1,{"$f":"AL23*AK23","v":15.4},null,{"$f":"AM23-AF23","v":0.17999999999999972},{"$f":"IF((AF23)=0,\"\",(AO23/AF23))","v":1.1826544021024949E-2}]
["Smart Meter (SMIRR) Rate Rider",null,"Monthly",null,3.65,1,{"$f":"F24*E24","v":3.65},null,0,1,0,null,-3.65,{"$f":"IF((G24)=0,\"\",(M24/G24))","v":-1},null,0,1,0,null,0,{"$f":"IF((K24)=0,\"\",(T24/K24))","v":""},null,0,1,0,null,0,{"$f":"IF((R24)=0,\"\",(AA24/R24))","v":""},null,0,1,0,null,0,{"$f":"IF((Y24)=0,\"\",(AH24/Y24))","v":""},null,0,1,0,null,0,{"$f":"IF((AF24)=0,\"\",(AO24/AF24))","v":""}]
["Rate Rider Smart Meters Capital (2016)",null,"Monthly",null,0,1,0,null,{"$f":"'Rates Summary'!D10","v":0.43},1,0.43,null,0.43,1,null,0,1,0,null,-0.43,-1,null,0,1,0,null,0,"",null,0,1,0,null,0,"",null,0,1,0,null,0,""]
["Rate Rider Recovery of Stranded Meters (2016)",null,"Monthly",null,0,1,0,null,{"$f":"'Rates Summary'!$D$11","v":6.4},1,6.4,null,6.4,1,null,0,1,0,null,-6.4,-1,null,0,1,0,null,0,"",null,0,1,0,null,0,"",null,0,1,0,null,0,""]
[null,null,null,null,null,1,0,null,0,1,0,null,0,{"$f":"IF((G27)=0,\"\",(M27/G27))","v":""},null,0,1,0,null,0,"",null,0,1,0,null,0,"",null,0,1,0,null,0,"",null,0,1,0,null,0,""]
[null,null,null,null,null,1,0,null,0,1,0,null,0,{"$f":"IF((G28)=0,\"\",(M28/G28))","v":""},null,0,1,0,null,0,"",null,0,1,0,null,0,"",null,0,1,0,null,0,"",null,0,1,0,null,0,""]
["Distribution Volumetric Rate",null,"per kWh",null,1.06E-2,{"$f":"$E$18","v":2000},21.2,null,{"$f":"'Rates Summary'!$E$41","v":1.46E-2},{"$f":"$E$18","v":2000},{"$f":"J29*I29","v":29.2},null,{"$f":"K29-G29","v":8},{"$f":"IF((G29)=0,\"\",(M29/G29))","v":0.37735849056603776},null,{"$f":"'Rates Summary'!$F$41","v":1.5100000000000001E-2},{"$f":"$E$18","v":2000},{"$f":"Q29*P29","v":30.200000000000003},null,1.0000000000000036,3.4246575342465876E-2,null,{"$f":"'Rates Summary'!$G$41","v":1.55E-2},{"$f":"$E$18","v":2000},{"$f":"X29*W29","v":31},null,0.79999999999999716,2.6490066225165466E-2,null,{"$f":"'Rates Summary'!$H$41","v":1.61E-2},{"$f":"$E$18","v":2000},{"$f":"AE29*AD29","v":32.200000000000003},null,1.2000000000000028,3.8709677419354931E-2,null,{"$f":"'Rates Summary'!$I$41","v":1.66E-2},{"$f":"$E$18","v":2000},{"$f":"AL29*AK29","v":33.200000000000003},null,1,3.1055900621118009E-2]
["Rate Rider Tax Change (2015)",null,"per kWh",null,-1E-4,{"$f":"$E$18","v":2000},-0.2,null,0,{"$f":"$E$18","v":2000},0,null,0.2,{"$f":"IF((G30)=0,\"\",(M30/G30))","v":-1},null,0,{"$f":"$E$18","v":2000},0,null,0,"",null,0,{"$f":"$E$18","v":2000},0,null,0,"",null,0,{"$f":"$E$18","v":2000},0,null,0,"",null,0,{"$f":"$E$18","v":2000},0,null,0,""]
["LRAM VA (2016)",null,"per kWh",null,0,{"$f":"$E$18","v":2000},0,null,{"$f":"'Rates Summary'!D7","v":8.0000000000000004E-4},2000,1.6,null,1.6,1,null,0,2000,0,null,-1.6,{"$f":"IF((K31)=0,\"\",(T31/K31))","v":-1},null,0,2000,0,null,0,"",null,0,2000,0,null,0,"",null,0,2000,0,null,0,""]
["Rate Rider Incremental Capital 2012 True-Up (2016)",null,"per kWh",null,0,{"$f":"$E$18","v":2000},0,null,{"$f":"'Rates Summary'!D9","v":2.0000000000000001E-4},2000,0.4,null,0.4,1,null,0,2000,0,null,-0.4,{"$f":"IF((K32)=0,\"\",(T32/K32))","v":-1},null,0,2000,0,null,0,"",null,0,2000,0,null,0,"",null,0,2000,0,null,0,""]
[null,null,"per kWh",null,null,2000,{"$f":"F33*E33","v":0},null,null,2000,{"$f":"J33*I33","v":0},null,{"$f":"K33-G33","v":0},{"$f":"IF((G33)=0,\"\",(M33/G33))","v":""},null,null,2000,{"$f":"Q33*P33","v":0},null,{"$f":"R33-K33","v":0},{"$f":"IF((K33)=0,\"\",(T33/K33))","v":""},null,null,2000,{"$f":"X33*W33","v":0},null,{"$f":"Y33-R33","v":0},{"$f":"IF((R33)=0,\"\",(AA33/R33))","v":""},null,null,2000,{"$f":"AE33*AD33","v":0},null,{"$f":"AF33-Y33","v":0},{"$f":"IF((Y33)=0,\"\",(AH33/Y33))","v":""},null,null,2000,{"$f":"AL33*AK33","v":0},null,{"$f":"AM33-AF33","v":0},{"$f":"IF((AF33)=0,\"\",(AO33/AF33))","v":""}]
[null,null,"per kWh",null,null,2000,0,null,null,2000,0,null,0,"",null,null,2000,0,null,0,"",null,null,2000,0,null,0,"",null,null,2000,0,null,0,"",null,null,2000,0,null,0,""]
[null,null,null,null,null,2000,0,null,null,2000,0,null,0,"",null,null,2000,0,null,0,"",null,null,2000,0,null,0,"",null,null,2000,0,null,0,"",null,null,2000,0,null,0,""]
[null,null,null,null,null,2000,0,null,null,2000,0,null,0,"",null,null,2000,0,null,0,"",null,null,2000,0,null,0,"",null,null,2000,0,null,0,"",null,null,2000,0,null,0,""]
[null,null,null,null,null,2000,0,null,null,2000,0,null,0,"",null,null,2000,0,null,0,"",null,null,2000,0,null,0,"",null,null,2000,0,null,0,"",null,null,2000,0,null,0,""]
[null,null,null,null,null,2000,0,null,null,2000,0,null,0,"",null,null,2000,0,null,0,"",null,null,2000,0,null,0,"",null,null,2000,0,null,0,"",null,null,2000,0,null,0,""]
["Sub-Total A (excluding pass through)",null,null,null,null,null,{"$f":"SUM(G23:G38)","v":50.5},null,null,null,{"$f":"SUM(K23:K38)","v":52.3},null,{"$f":"K39-G39","v":1.7999999999999972},{"$f":"IF((G39)=0,\"\",(M39/G39))","v":3.5643564356435585E-2},null,null,null,{"$f":"SUM(R23:R38)","v":44.790000000000006},null,-7.5099999999999909,-0.14359464627151036,null,null,null,{"$f":"SUM(Y23:Y38)","v":45.94},null,1.1499999999999915,2.5675373967403246E-2,null,null,null,{"$f":"SUM(AF23:AF38)","v":47.42},null,1.480000000000004,{"$f":"IF((Y39)=0,\"\",(AH39/Y39))","v":3.221593382673061E-2},null,null,null,{"$f":"SUM(AM23:AM38)","v":48.6},null,1.1799999999999997,2.4884015183466886E-2]
["Deferral/Variance Account Disposition Rate Rider (2016)",null,"per kWh",null,0,{"$f":"$E$18","v":2000},{"$f":"F40*E40","v":0},null,{"$f":"'Rates Summary'!D5","v":-6.9999999999999999E-4},{"$f":"$E$18","v":2000},{"$f":"J40*I40","v":-1.4},null,{"$f":"K40-G40","v":-1.4},1,null,0,{"$f":"$E$18","v":2000},{"$f":"Q40*P40","v":0},null,1.4,-1,null,0,{"$f":"$E$18","v":2000},{"$f":"X40*W40","v":0},null,0,"",null,0,{"$f":"$E$18","v":2000},{"$f":"AE40*AD40","v":0},null,0,{"$f":"IF((Y40)=0,\"\",(AH40/Y40))","v":""},null,0,{"$f":"$E$18","v":2000},{"$f":"AL40*AK40","v":0},null,0,""]
[null,null,null,null,null,{"$f":"$E$18","v":2000},{"$f":"F41*E41","v":0},null,{"$f":"E41","v":0},{"$f":"$E$18","v":2000},{"$f":"J41*I41","v":0},null,{"$f":"K41-G41","v":0},{"$f":"IF((G41)=0,\"\",(M41/G41))","v":""},null,null,{"$f":"$E$18","v":2000},{"$f":"Q41*P41","v":0},null,0,"",null,null,{"$f":"$E$18","v":2000},{"$f":"X41*W41","v":0},null,0,"",null,null,{"$f":"$E$18","v":2000},{"$f":"AE41*AD41","v":0},null,0,"",null,null,{"$f":"$E$18","v":2000},{"$f":"AL41*AK41","v":0},null,0,""]
["Rate Rider CGAAP Account 1576 (2016)",null,"per kWh",null,0,2000,0,null,{"$f":"'Rates Summary'!$D$8","v":-6.1999999999999998E-3},2000,-12.4,null,-12.4,1,null,0,2000,0,null,12.4,-1,null,0,2000,0,null,0,"",null,0,2000,0,null,0,"",null,0,2000,0,null,0,""]
["Disposition of Global Adjustment (2015)  \nApplicable to Non-RPP Customers",null,"per kWh",null,1.5599999999999999E-2,0,0,null,0,2000,0,null,0,"",null,0,2000,0,null,0,"",null,0,2000,0,null,0,"",null,0,2000,0,null,0,"",null,0,2000,0,null,0,""]
["Disposition of Global Adjustment (2016) \nApplicable to Non-RPP Customers",null,"per kWh",null,0,2000,0,null,{"$f":"'Rates Summary'!D6","v":2.0500000000000001E-2},0,0,null,0,"",null,0,2000,0,null,0,"",null,0,2000,0,null,0,"",null,0,2000,0,null,0,"",null,0,2000,0,null,0,""]
["Low Voltage Service Charge",null,"per kWh",null,5.9999999999999995E-4,2000,{"$f":"F45*E45","v":1.2},null,{"$f":"'Rates Summary'!D15","v":1.1000000000000001E-3},2000,{"$f":"J45*I45","v":2.2000000000000002},null,{"$f":"K45-G45","v":1.0000000000000002},{"$f":"IF((G45)=0,\"\",(M45/G45))","v":0.83333333333333359},null,{"$f":"I45","v":1.1000000000000001E-3},2000,{"$f":"Q45*P45","v":2.2000000000000002},null,{"$f":"R45-K45","v":0},0,null,{"$f":"P45","v":1.1000000000000001E-3},2000,{"$f":"X45*W45","v":2.2000000000000002},null,{"$f":"Y45-R45","v":0},0,null,{"$f":"W45","v":1.1000000000000001E-3},2000,{"$f":"AE45*AD45","v":2.2000000000000002},null,{"$f":"AF45-Y45","v":0},0,null,{"$f":"AD45","v":1.1000000000000001E-3},2000,{"$f":"AL45*AK45","v":2.2000000000000002},null,{"$f":"AM45-AF45","v":0},0]
["Line Losses on Cost of Power",null,"per kWh",null,{"$f":"IF(ISBLANK(C16)=TRUE, 0, IF(C16=\"TOU\", 0.64*$E$56+0.18*$E$57+0.18*$E$58, IF(AND(C16=\"non-TOU\", F60>0), E60,E59)))","v":0.10766000000000001},{"$f":"$E$18*(1+$E$75)-$E$18","v":68.800000000000182},7.4070080000000198,null,{"$f":"0.64*$E$56+0.18*$E$57+0.18*$E$58","v":0.10766000000000001},{"$f":"$E$18*(1+$I$75)-$E$18","v":78.599999999999909},8.4620759999999908,null,1.055067999999971,0.14244186046511198,null,{"$f":"0.64*$E$56+0.18*$E$57+0.18*$E$58","v":0.10766000000000001},{"$f":"$E$18*(1+$I$75)-$E$18","v":78.599999999999909},{"$f":"Q46*P46","v":8.4620759999999908},null,{"$f":"R46-K46","v":0},0,null,{"$f":"0.64*$E$56+0.18*$E$57+0.18*$E$58","v":0.10766000000000001},{"$f":"$E$18*(1+$I$75)-$E$18","v":78.599999999999909},{"$f":"X46*W46","v":8.4620759999999908},null,{"$f":"Y46-R46","v":0},0,null,{"$f":"0.64*$E$56+0.18*$E$57+0.18*$E$58","v":0.10766000000000001},{"$f":"$E$18*(1+$I$75)-$E$18","v":78.599999999999909},{"$f":"AE46*AD46","v":8.4620759999999908},null,{"$f":"AF46-Y46","v":0},0,null,{"$f":"0.64*$E$56+0.18*$E$57+0.18*$E$58","v":0.10766000000000001},{"$f":"$E$18*(1+$I$75)-$E$18","v":78.599999999999909},{"$f":"AL46*AK46","v":8.4620759999999908},null,{"$f":"AM46-AF46","v":0},0]
["Smart Meter Entity Charge",null,"Monthly",null,0.79,1,{"$f":"F47*E47","v":0.79},null,0.79,1,{"$f":"J47*I47","v":0.79},null,{"$f":"K47-G47","v":0},null,null,0.79,1,{"$f":"Q47*P47","v":0.79},null,{"$f":"R47-K47","v":0},0,null,0.79,1,{"$f":"X47*W47","v":0.79},null,{"$f":"Y47-R47","v":0},0,null,0,1,{"$f":"AE47*AD47","v":0},null,{"$f":"AF47-Y47","v":-0.79},-1,null,0,1,{"$f":"AL47*AK47","v":0},null,{"$f":"AM47-AF47","v":0},""]
["Sub-Total B - Distribution (includes Sub-Total A)",null,null,null,null,null,{"$f":"SUM(G40:G47)+G39","v":59.897008000000021},null,null,null,{"$f":"SUM(K40:K47)+K39","v":49.952075999999984},null,{"$f":"K48-G48","v":-9.944932000000037},{"$f":"IF((G48)=0,\"\",(M48/G48))","v":-0.16603386933784794},null,null,null,{"$f":"SUM(R40:R47)+R39","v":56.242075999999997},null,{"$f":"R48-K48","v":6.2900000000000134},{"$f":"IF((K48)=0,\"\",(T48/K48))","v":0.12592069246531445},null,null,null,{"$f":"SUM(Y40:Y47)+Y39","v":57.392075999999989},null,{"$f":"Y48-R48","v":1.1499999999999915},{"$f":"IF((R48)=0,\"\",(AA48/R48))","v":2.0447324881819644E-2},null,null,null,{"$f":"SUM(AF40:AF47)+AF39","v":58.082075999999994},null,{"$f":"AF48-Y48","v":0.69000000000000483},{"$f":"IF((Y48)=0,\"\",(AH48/Y48))","v":1.2022565623867745E-2},null,null,null,{"$f":"SUM(AM40:AM47)+AM39","v":59.262075999999993},null,{"$f":"AM48-AF48","v":1.1799999999999997},{"$f":"IF((AF48)=0,\"\",(AO48/AF48))","v":2.0316078233842742E-2}]
["RTSR - Network",null,"per kWh",null,6.0000000000000001E-3,{"$f":"$E$18*(1+$E$75)","v":2068.8000000000002},{"$f":"F49*E49","v":12.412800000000001},null,{"$f":"'Rates Summary'!D17","v":6.3E-3},{"$f":"$E$18*(1+$I$75)","v":2078.6},{"$f":"J49*I49","v":13.095179999999999},null,{"$f":"K49-G49","v":0.68237999999999843},5.4973897911832818E-2,null,{"$f":"I49","v":6.3E-3},{"$f":"$E$18*(1+P75)","v":2078.6},{"$f":"Q49*P49","v":13.095179999999999},null,0,0,null,{"$f":"P49","v":6.3E-3},{"$f":"$E$18*(1+W75)","v":2078.6},{"$f":"X49*W49","v":13.095179999999999},null,0,0,null,{"$f":"W49","v":6.3E-3},{"$f":"$E$18*(1+AD75)","v":2078.6},{"$f":"AE49*AD49","v":13.095179999999999},null,0,0,null,{"$f":"AD49","v":6.3E-3},{"$f":"$E$18*(1+AK75)","v":2078.6},{"$f":"AL49*AK49","v":13.095179999999999},null,0,0]
["RTSR - Line and Transformation Connection",null,"per kWh",null,4.5999999999999999E-3,{"$f":"F49","v":2068.8000000000002},{"$f":"F50*E50","v":9.5164800000000014},null,{"$f":"'Rates Summary'!D18","v":5.1000000000000004E-3},{"$f":"J49","v":2078.6},{"$f":"J50*I50","v":10.600860000000001},null,1.0843799999999995,0.11394759406839497,null,{"$f":"I50","v":5.1000000000000004E-3},{"$f":"Q49","v":2078.6},{"$f":"Q50*P50","v":10.600860000000001},null,0,0,null,{"$f":"P50","v":5.1000000000000004E-3},{"$f":"X49","v":2078.6},{"$f":"X50*W50","v":10.600860000000001},null,0,0,null,{"$f":"W50","v":5.1000000000000004E-3},{"$f":"AE49","v":2078.6},{"$f":"AE50*AD50","v":10.600860000000001},null,0,0,null,{"$f":"AD50","v":5.1000000000000004E-3},{"$f":"AL49","v":2078.6},{"$f":"AL50*AK50","v":10.600860000000001},null,0,0]
["Sub-Total C - Delivery (including Sub-Total B)",null,null,null,null,null,{"$f":"SUM(G48:G50)","v":81.826288000000019},null,null,null,{"$f":"SUM(K48:K50)","v":73.648115999999987},null,-8.178172000000032,-9.9945533396309391E-2,null,null,null,{"$f":"SUM(R48:R50)","v":79.938115999999994},null,6.2900000000000063,8.5406122269305676E-2,null,null,null,{"$f":"SUM(Y48:Y50)","v":81.088115999999985},null,1.1499999999999915,1.4386128389615681E-2,null,null,null,{"$f":"SUM(AF48:AF50)","v":81.778115999999997},null,0.69000000000001194,8.5092617024177999E-3,null,null,null,{"$f":"SUM(AM48:AM50)","v":82.95811599999999},null,1.1799999999999926,1.4429288148433165E-2]
["Wholesale Market Service Charge (WMSC)",null,"per kWh",null,4.4000000000000003E-3,{"$f":"F50","v":2068.8000000000002},{"$f":"F52*E52","v":9.1027200000000015},null,{"$f":"E52","v":4.4000000000000003E-3},{"$f":"J50","v":2078.6},{"$f":"J52*I52","v":9.1458399999999997},null,4.3119999999998271E-2,4.7370456303169016E-3,null,{"$f":"I52","v":4.4000000000000003E-3},{"$f":"Q50","v":2078.6},{"$f":"Q52*P52","v":9.1458399999999997},null,0,0,null,{"$f":"P52","v":4.4000000000000003E-3},{"$f":"X50","v":2078.6},{"$f":"X52*W52","v":9.1458399999999997},null,0,0,null,{"$f":"W52","v":4.4000000000000003E-3},{"$f":"AE50","v":2078.6},{"$f":"AE52*AD52","v":9.1458399999999997},null,0,0,null,{"$f":"AD52","v":4.4000000000000003E-3},{"$f":"AL50","v":2078.6},{"$f":"AL52*AK52","v":9.1458399999999997},null,0,0]
["Rural and Remote Rate Protection (RRRP)",null,"per kWh",null,1.2999999999999999E-3,{"$f":"F50","v":2068.8000000000002},2.6894400000000003,null,{"$f":"E53","v":1.2999999999999999E-3},{"$f":"J50","v":2078.6},2.7021799999999998,null,1.2739999999999529E-2,4.7370456303169163E-3,null,{"$f":"I53","v":1.2999999999999999E-3},{"$f":"Q50","v":2078.6},2.7021799999999998,null,0,0,null,{"$f":"P53","v":1.2999999999999999E-3},{"$f":"X50","v":2078.6},2.7021799999999998,null,0,0,null,{"$f":"W53","v":1.2999999999999999E-3},{"$f":"AE50","v":2078.6},2.7021799999999998,null,0,0,null,{"$f":"AD53","v":1.2999999999999999E-3},{"$f":"AL50","v":2078.6},2.7021799999999998,null,0,0]
["Standard Supply Service Charge",null,"Monthly",null,0.25,1,0.25,null,{"$f":"E54","v":0.25},1,0.25,null,0,0,null,{"$f":"I54","v":0.25},1,0.25,null,0,0,null,{"$f":"P54","v":0.25},1,0.25,null,0,0,null,{"$f":"W54","v":0.25},1,0.25,null,0,0,null,{"$f":"AD54","v":0.25},1,0.25,null,0,0]
["Debt Retirement Charge (DRC)",null,"per kWh",null,7.0000000000000001E-3,{"$f":"E18","v":2000},14,null,{"$f":"E55","v":7.0000000000000001E-3},{"$f":"E18","v":2000},14,null,0,0,null,{"$f":"I55","v":7.0000000000000001E-3},{"$f":"J55","v":2000},14,null,0,0,null,{"$f":"P55","v":7.0000000000000001E-3},{"$f":"Q55","v":2000},14,null,0,0,null,{"$f":"W55","v":7.0000000000000001E-3},{"$f":"X55","v":2000},14,null,0,0,null,{"$f":"AD55","v":7.0000000000000001E-3},{"$f":"AE55","v":2000},14,null,0,0]
["TOU - Off Peak",null,"per kWh",null,8.3000000000000004E-2,{"$f":"0.64*$E$18","v":1280},106.24000000000001,null,{"$f":"E56","v":8.3000000000000004E-2},{"$f":"F56","v":1280},106.24000000000001,null,0,0,null,{"$f":"I56","v":8.3000000000000004E-2},{"$f":"J56","v":1280},106.24000000000001,null,0,0,null,{"$f":"P56","v":8.3000000000000004E-2},{"$f":"Q56","v":1280},106.24000000000001,null,0,0,null,{"$f":"W56","v":8.3000000000000004E-2},{"$f":"X56","v":1280},106.24000000000001,null,0,0,null,{"$f":"AD56","v":8.3000000000000004E-2},{"$f":"AE56","v":1280},106.24000000000001,null,0,0]
["TOU - Mid Peak",null,"per kWh",null,0.128,{"$f":"0.18*$E$18","v":360},46.08,null,{"$f":"E57","v":0.128},{"$f":"F57","v":360},46.08,null,0,0,null,{"$f":"I57","v":0.128},360,46.08,null,0,0,null,{"$f":"P57","v":0.128},360,46.08,null,0,0,null,{"$f":"W57","v":0.128},360,46.08,null,0,0,null,{"$f":"AD57","v":0.128},360,46.08,null,0,0]
["TOU - On Peak",null,"per kWh",null,0.17499999999999999,{"$f":"0.18*$E$18","v":360},62.999999999999993,null,0.17499999999999999,{"$f":"F58","v":360},62.999999999999993,null,0,0,null,0.17499999999999999,360,62.999999999999993,null,0,0,null,0.17499999999999999,360,62.999999999999993,null,0,0,null,0.17499999999999999,360,62.999999999999993,null,0,0,null,0.17499999999999999,360,62.999999999999993,null,0,0]
["Energy - RPP - Tier 1",null,"per kWh",null,9.9000000000000005E-2,{"$f":"IF(AND($S$1=1, E18>=600), 600, IF(AND($S$1=1, AND(E18<600, E18>=0)), E18, IF(AND($S$1=2, E18>=1000), 1000, IF(AND($S$1=2, AND(E18<1000, E18>=0)), E18))))","v":600},{"$f":"F59*E59","v":59.400000000000006},null,9.9000000000000005E-2,{"$f":"F59","v":600},{"$f":"J59*I59","v":59.400000000000006},null,0,0,null,9.9000000000000005E-2,600,{"$f":"Q59*P59","v":59.400000000000006},null,0,0,null,9.9000000000000005E-2,600,{"$f":"X59*W59","v":59.400000000000006},null,0,0,null,9.9000000000000005E-2,600,{"$f":"AE59*AD59","v":59.400000000000006},null,0,0,null,9.9000000000000005E-2,600,{"$f":"AL59*AK59","v":59.400000000000006},null,0,0]
["Energy - RPP - Tier 2",null,"per kWh",null,0.11600000000000001,{"$f":"IF(AND($S$1=1, E18>=600), E18-600, IF(AND($S$1=1, AND(E18<600, E18>=0)), 0, IF(AND($S$1=2, E18>=1000), E18-1000, IF(AND($S$1=2, AND(E18<1000, E18>=0)), 0))))","v":1400},{"$f":"F60*E60","v":162.4},null,0.11600000000000001,{"$f":"F60","v":1400},{"$f":"J60*I60","v":162.4},null,0,0,null,0.11600000000000001,1400,{"$f":"Q60*P60","v":162.4},null,0,0,null,0.11600000000000001,1400,{"$f":"X60*W60","v":162.4},null,0,0,null,0.11600000000000001,1400,{"$f":"AE60*AD60","v":162.4},null,0,0,null,0.11600000000000001,1400,{"$f":"AL60*AK60","v":162.4},null,0,0]
[null,null,null,null,null,null,null,null,null,null,null,null,null,null,null,null,null,null,null,null,"",null,null,null,null,null,null,"",null,null,null,null,null,null,"",null,null,null,null,null,null,""]
["Total Bill on TOU (before Taxes)",null,null,null,null,null,{"$f":"SUM(G52:G58,G51)","v":323.18844800000005},null,null,null,{"$f":"SUM(K52:K58,K51)","v":315.06613600000003},null,{"$f":"K62-G62","v":-8.1223120000000222},{"$f":"IF((G62)=0,\"\",(M62/G62))","v":-2.5131814117316534E-2},null,null,null,{"$f":"SUM(R52:R58,R51)","v":321.35613599999999},null,{"$f":"R62-K62","v":6.2899999999999636},1.9964062402441002E-2,null,null,null,{"$f":"SUM(Y52:Y58,Y51)","v":322.50613599999997},null,{"$f":"Y62-R62","v":1.1499999999999773},3.5785842284336445E-3,null,null,null,{"$f":"SUM(AF52:AF58,AF51)","v":323.19613600000002},null,{"$f":"AF62-Y62","v":0.69000000000005457},2.1394941769419689E-3,null,null,null,{"$f":"SUM(AM52:AM58,AM51)","v":324.37613599999997},null,{"$f":"AM62-AF62","v":1.17999999999995},3.6510337487449104E-3]
["HST",null,null,null,0.13,null,{"$f":"G62*E63","v":42.014498240000009},null,0.13,null,{"$f":"K62*I63","v":40.958597680000004},null,-1.0559005600000049,-2.5131814117316582E-2,null,0.13,null,{"$f":"R62*P63","v":41.776297679999999},null,{"$f":"R63-K63","v":0.81769999999999499},1.9964062402440995E-2,null,0.13,null,{"$f":"Y62*W63","v":41.925797679999995},null,{"$f":"Y63-R63","v":0.14949999999999619},3.5785842284336241E-3,null,0.13,null,{"$f":"AF62*AD63","v":42.015497680000003},null,{"$f":"AF63-Y63","v":8.9700000000007662E-2},2.1394941769419824E-3,null,0.13,null,{"$f":"AM62*AK63","v":42.168897680000001},null,{"$f":"AM63-AF63","v":0.15339999999999776},3.6510337487450119E-3]
["Total Bill (including HST)",null,null,null,null,null,{"$f":"G62+G63","v":365.20294624000007},null,null,null,{"$f":"K62+K63","v":356.02473368000005},null,-9.1782125600000199,-2.513181411731652E-2,null,null,null,{"$f":"R62+R63","v":363.13243367999996},null,7.1076999999999089,1.996406240244086E-2,null,null,null,{"$f":"Y62+Y63","v":364.43193367999999},null,1.2995000000000232,3.5785842284337794E-3,null,null,null,{"$f":"AF62+AF63","v":365.21163368000003},null,0.77970000000004802,2.1394941769419312E-3,null,null,null,{"$f":"AM62+AM63","v":366.54503367999996},null,1.3333999999999264,3.6510337487448636E-3]
["Ontario Clean Energy Benefit 1",null,null,null,null,null,{"$f":"ROUND(-G64*10%,2)","v":-36.520000000000003},null,null,null,null,null,36.520000000000003,-1,null,null,null,null,null,0,"",null,null,null,null,null,0,"",null,null,null,null,null,0,"",null,null,null,null,null,0,""]
["Total Bill on TOU (including OCEB)",null,null,null,null,null,{"$f":"G64+G65","v":328.68294624000009},null,null,null,{"$f":"K64+K65","v":356.02473368000005},null,27.341787439999962,8.3185902258632358E-2,null,null,null,{"$f":"R64+R65","v":363.13243367999996},null,7.1076999999999089,1.996406240244086E-2,null,null,null,{"$f":"Y64+Y65","v":364.43193367999999},null,1.2995000000000232,3.5785842284337794E-3,null,null,null,{"$f":"AF64+AF65","v":365.21163368000003},null,0.77970000000004802,2.1394941769419312E-3,null,null,null,{"$f":"AM64+AM65","v":366.54503367999996},null,1.3333999999999264,3.6510337487448636E-3]
[null,null,null,null,null,null,null,null,null,null,null,null,null,null,null,null,null,null,null,null,"",null,null,null,null,null,null,"",null,null,null,null,null,null,"",null,null,null,null,null,null,""]
["Total Bill on RPP (before Taxes)",null,null,null,null,null,{"$f":"SUM(G60:G61,G51,G52:G55)","v":270.26844800000003},null,null,null,{"$f":"SUM(K60:K61,K51,K52:K55)","v":262.14613599999996},null,{"$f":"K68-G68","v":-8.122312000000079},{"$f":"IF((G68)=0,\"\",(M68/G68))","v":-3.0052757027709272E-2},null,null,null,{"$f":"SUM(R60:R61,R51,R52:R55)","v":268.43613600000003},null,{"$f":"R68-K68","v":6.2900000000000773},2.3994250290990664E-2,null,null,null,{"$f":"SUM(Y60:Y61,Y51,Y52:Y55)","v":269.58613600000001},null,{"$f":"Y68-R68","v":1.1499999999999773},4.2840729908285415E-3,null,null,null,{"$f":"SUM(AF60:AF61,AF51,AF52:AF55)","v":270.27613600000001},null,{"$f":"AF68-Y68","v":0.68999999999999773},2.5594788004973581E-3,null,null,null,{"$f":"SUM(AM60:AM61,AM51,AM52:AM55)","v":271.45613600000001},null,{"$f":"AM68-AF68","v":1.1800000000000068},4.3659052458852928E-3]
["HST",null,null,null,0.13,null,{"$f":"G68*E69","v":35.134898240000005},null,0.13,null,{"$f":"K68*I69","v":34.078997679999993},null,-1.055900560000012,{"$f":"IF((G69)=0,\"\",(M69/G69))","v":-3.005275702770932E-2},null,0.13,null,{"$f":"R68*P69","v":34.896697680000003},null,{"$f":"R69-K69","v":0.8177000000000092},2.399425029099064E-2,null,0.13,null,{"$f":"Y68*W69","v":35.046197680000006},null,{"$f":"Y69-R69","v":0.1495000000000033},4.284072990828721E-3,null,0.13,null,{"$f":"AF68*AD69","v":35.135897679999999},null,{"$f":"AF69-Y69","v":8.9699999999993452E-2},2.5594788004971794E-3,null,0.13,null,{"$f":"AM68*AK69","v":35.289297680000004},null,{"$f":"AM69-AF69","v":0.15340000000000487},4.3659052458854064E-3]
["Total Bill (including HST)",null,null,null,null,null,{"$f":"G68+G69","v":305.40334624000002},null,null,null,{"$f":"K68+K69","v":296.22513367999994},null,-9.1782125600000768,-3.0052757027709234E-2,null,null,null,{"$f":"R68+R69","v":303.33283368000002},null,7.1077000000000794,2.399425029099064E-2,null,null,null,{"$f":"Y68+Y69","v":304.63233367999999},null,1.2994999999999663,4.2840729908285155E-3,null,null,null,{"$f":"AF68+AF69","v":305.41203368000004},null,0.77970000000004802,2.5594788004975246E-3,null,null,null,{"$f":"AM68+AM69","v":306.74543368000002},null,1.3333999999999833,4.3659052458852122E-3]
["Ontario Clean Energy Benefit 1",null,null,null,null,null,{"$f":"ROUND(-G70*10%,2)","v":-30.54},null,null,null,null,null,30.54,-1,null,null,null,null,null,0,"",null,null,null,null,null,0,"",null,null,null,null,null,0,"",null,null,null,null,null,0,""]
["Total Bill on RPP (including OCEB)",null,null,null,null,null,{"$f":"SUM(G70:G71)","v":274.86334624},null,null,null,{"$f":"SUM(K70:K71)","v":296.22513367999994},null,21.361787439999944,7.7717846821771797E-2,null,null,null,{"$f":"SUM(R70:R71)","v":303.33283368000002},null,7.1077000000000794,2.399425029099064E-2,null,null,null,{"$f":"SUM(Y70:Y71)","v":304.63233367999999},null,1.2994999999999663,4.2840729908285155E-3,null,null,null,{"$f":"SUM(AF70:AF71)","v":305.41203368000004},null,0.77970000000004802,2.5594788004975246E-3,null,null,null,{"$f":"SUM(AM70:AM71)","v":306.74543368000002},null,1.3333999999999833,4.3659052458852122E-3]
[]
[]
["Loss Factor (%)",null,null,null,3.44E-2,null,null,null,3.9300000000000002E-2,null,null,null,null,null,null,3.9300000000000002E-2,null,null,null,null,null,null,3.9300000000000002E-2,null,null,null,null,null,null,3.9300000000000002E-2,null,null,null,null,null,null,3.9300000000000002E-2]
[]
["Distribution Excluding Rate Riders",null,null,null,"2015 Current Board-Approved",null,null,null,"2016 Test Year 1\nProposed",null,null,null,"Impact\n2016 TEST vs. \n2015 Bridge",null,null,"2017 Test Year 2\nProposed",null,null,null,"Impact\n2017 TEST 2 vs. \n2016 Test 1",null,null,"2018 Test Year 3\nProposed",null,null,null,"Impact\n2018 TEST 3 vs. \n2017 Test 2",null,null,"2019 Test Year 4\nProposed",null,null,null,"Impact\n2019 TEST 4 vs. \n2018 Test 3",null,null,"2020 Test Year 5 \nProposed",null,null,null,"Impact\n2020 TEST 5 vs. \n2019 Test 4"]
[null,null,"Charge Unit",null,"Rate","Volume","Charge",null,"Rate","Volume","Charge",null,"$ Change","% Change",null,"Rate","Volume","Charge",null,"$ Change","% Change",null,"Rate","Volume","Charge",null,"$ Change","% Change",null,"Rate","Volume","Charge",null,"$ Change","% Change",null,"Rate","Volume","Charge",null,"$ Change","% Change"]
[null,null,null,null,"($)",null,"($)",null,"($)",null,"($)",null,null,null,null,"($)",null,"($)",null,null,null,null,"($)",null,"($)",null,null,null,null,"($)",null,"($)",null,null,null,null,"($)",null,"($)"]
["Monthly Service Charge",null,"Monthly",null,25.85,1,{"$f":"F80*E80","v":25.85},null,{"$f":"'Rates Summary'!$E$29","v":14.27},1,{"$f":"J80*I80","v":14.27},null,{"$f":"K80-G80","v":-11.580000000000002},{"$f":"IF((G80)=0,\"\",(M80/G80))","v":-0.44796905222437144},null,{"$f":"'Rates Summary'!$F$29","v":14.59},1,{"$f":"Q80*P80","v":14.59},null,{"$f":"R80-K80","v":0.32000000000000028},{"$f":"IF((K80)=0,\"\",(T80/K80))","v":2.2424667133847252E-2},null,{"$f":"'Rates Summary'!$G$29","v":14.94},1,{"$f":"X80*W80","v":14.94},null,{"$f":"Y80-R80","v":0.34999999999999964},{"$f":"IF((R80)=0,\"\",(AA80/R80))","v":2.3989033584646994E-2},null,{"$f":"'Rates Summary'!$H$29","v":15.22},1,{"$f":"AE80*AD80","v":15.22},null,{"$f":"AF80-Y80","v":0.28000000000000114},{"$f":"IF((Y80)=0,\"\",(AH80/Y80))","v":1.8741633199464602E-2},null,{"$f":"'Rates Summary'!$I$29","v":15.4},1,{"$f":"AL80*AK80","v":15.4},null,{"$f":"AM80-AF80","v":0.17999999999999972},{"$f":"IF((AF80)=0,\"\",(AO80/AF80))","v":1.1826544021024949E-2}]
["Distribution Volumetric Rate",null,"per kWh",null,1.06E-2,{"$f":"$E$18","v":2000},{"$f":"F81*E81","v":21.2},null,{"$f":"'Rates Summary'!$E$41","v":1.46E-2},{"$f":"$E$18","v":2000},29.2,null,8,{"$f":"IF((G81)=0,\"\",(M81/G81))","v":0.37735849056603776},null,{"$f":"'Rates Summary'!$F$41","v":1.5100000000000001E-2},{"$f":"$E$18","v":2000},30.200000000000003,null,1.0000000000000036,{"$f":"IF((K81)=0,\"\",(T81/K81))","v":3.4246575342465876E-2},null,{"$f":"'Rates Summary'!$G$41","v":1.55E-2},{"$f":"$E$18","v":2000},31,null,0.79999999999999716,{"$f":"IF((R81)=0,\"\",(AA81/R81))","v":2.6490066225165466E-2},null,{"$f":"'Rates Summary'!$H$41","v":1.61E-2},{"$f":"$E$18","v":2000},32.200000000000003,null,1.2000000000000028,{"$f":"IF((Y81)=0,\"\",(AH81/Y81))","v":3.8709677419354931E-2},null,{"$f":"'Rates Summary'!$I$41","v":1.66E-2},{"$f":"$E$18","v":2000},33.200000000000003,null,1,{"$f":"IF((AF81)=0,\"\",(AO81/AF81))","v":3.1055900621118009E-2}]
["\"Regular\" Distribution Only",null,null,null,null,null,{"$f":"SUM(G79:G81)","v":47.05},null,null,null,{"$f":"SUM(K79:K81)","v":43.47},null,-3.5799999999999983,-7.6089266737513248E-2,null,null,null,{"$f":"SUM(R79:R81)","v":44.790000000000006},null,1.3200000000000074,3.036576949620445E-2,null,null,null,{"$f":"SUM(Y79:Y81)","v":45.94},null,1.1499999999999915,2.5675373967403246E-2,null,null,null,{"$f":"SUM(AF79:AF81)","v":47.42},null,1.480000000000004,3.221593382673061E-2,null,null,null,{"$f":"SUM(AM79:AM81)","v":48.6},null,1.1799999999999997,2.4884015183466886E-2]
[]
[]
[null,"Residential (kWh) - 100, 250, 500, 800, 1000, 1500, 2000"]
[null,"GS<50kW (kWh) - 1000, 2000, 5000, 10000, 15000"]
[null,"GS>50kW (kW) - 60, 100, 500, 1000"]
[null,"Large User - range appropriate for utility"]
[null,"Lighting Classes and USL - 150 kWh and 1 kW, range appropriate for utility."]
[]
[null,null,"Note that cells with the highlighted color shown to the left indicate quantities that are loss adjusted."]

{"sheet":"Bill Impact GS <50 1000kWh","index":11,"n_rows":91,"n_cols":42,"rows_kept":91,"cut":false,"hidden":false,"merged":[[19,33,19,34],[19,36,19,38],[20,20,21,20],[20,26,21,26],[19,40,19,41],[19,22,19,24],[19,26,19,27],[19,29,19,31],[20,27,21,27],[20,33,21,33],[20,34,21,34],[20,40,21,40],[20,41,21,41],[2,0,2,9],[9,0,9,13],[10,0,10,13],[13,2,13,13],[13,15,13,26],[19,4,19,6],[19,8,19,10],[19,12,19,13],[19,15,19,17],[19,19,19,20],[64,0,64,2],[20,2,21,2],[20,12,21,12],[20,13,21,13],[20,19,21,19],[76,29,76,31],[76,33,76,34],[77,34,78,34],[65,0,65,2],[70,0,70,2],[71,0,71,2],[76,4,76,6],[76,8,76,10],[76,12,76,13],[77,40,78,40],[77,41,78,41],[76,36,76,38],[76,40,76,41],[77,2,78,2],[77,12,78,12],[77,13,78,13],[77,19,78,19],[77,20,78,20],[77,26,78,26],[77,27,78,27],[77,33,78,33],[76,15,76,17],[76,19,76,20],[76,22,76,24],[76,26,76,27]]}
[null,null,null,null,null,null,null,null,null,null,null,null,"File Number:",{"$f":"EBNUMBER","v":"EB-2015-0083"},null,null,null,null,1]
[null,null,null,null,null,null,null,null,null,null,null,null,"Exhibit:",{"$f":"'Bill Impact Resi 204kWh'!$N$2","v":8}]
[null,null,null,null,null,null,null,null,null,null,null,null,"Tab:",{"$f":"'Bill Impact Resi 204kWh'!$N$3","v":4}]
[null,null,null,null,null,null,null,null,null,null,null,null,"Schedule:",{"$f":"'Bill Impact Resi 204kWh'!$N$4","v":3}]
[null,null,null,null,null,null,null,null,null,null,null,null,"Page:"]
[]
[null,null,null,null,null,null,null,null,null,null,null,null,"Date:",{"$f":"'Bill Impact Resi 204kWh'!$N$7","v":"Settlement"}]
[]
[]
["Appendix 2-W"]
["Bill Impacts"]
[]
[]
["Customer Class:",null,"General Service Less Than 50 kW",null,null,null,null,null,null,null,null,null,null,null,null,{"$f":"C14","v":"General Service Less Than 50 kW"},null,null,null,null,null,null,null,null,null,null,null,null,null,null,null,null,null,null,null,null,{"$f":"P14","v":"General Service Less Than 50 kW"}]
[]
["TOU / non-TOU:",null,"TOU"]
[]
[null,null,"Consumption",null,1000," kWh"]
[]
[null,null,null,null,"2015 Current Board-Approved",null,null,null,"2016 Test Year 1\nProposed",null,null,null,"Impact\n2016 TEST vs. \n2015 Bridge",null,null,"2017 Test Year 2\nProposed",null,null,null,"Impact\n2017 TEST 2 vs. \n2016 Test 1",null,null,"2018 Test Year 3\nProposed",null,null,null,"Impact\n2018 TEST 3 vs. \n2017 Test 2",null,null,"2019 Test Year 4\nProposed",null,null,null,"Impact\n2019 TEST 4 vs. \n2018 Test 3",null,null,"2020 Test Year 5 \nProposed",null,null,null,"Impact\n2019 TEST 5 vs. \n2019 Test 4"]
[null,null,"Charge Unit",null,"Rate","Volume","Charge",null,"Rate","Volume","Charge",null,"$ Change","% Change",null,"Rate","Volume","Charge",null,"$ Change","% Change",null,"Rate","Volume","Charge",null,"$ Change","% Change",null,"Rate","Volume","Charge",null,"$ Change","% Change",null,"Rate","Volume","Charge",null,"$ Change","% Change"]
[null,null,null,null,"($)",null,"($)",null,"($)",null,"($)",null,null,null,null,"($)",null,"($)",null,null,null,null,"($)",null,"($)",null,null,null,null,"($)",null,"($)",null,null,null,null,"($)",null,"($)"]
["Monthly Service Charge",null,"Monthly",null,25.85,1,{"$f":"F23*E23","v":25.85},null,{"$f":"'Rates Summary'!$E$29","v":14.27},1,{"$f":"J23*I23","v":14.27},null,{"$f":"K23-G23","v":-11.580000000000002},{"$f":"IF((G23)=0,\"\",(M23/G23))","v":-0.44796905222437144},null,{"$f":"'Rates Summary'!$F$29","v":14.59},1,{"$f":"Q23*P23","v":14.59},null,{"$f":"R23-K23","v":0.32000000000000028},{"$f":"IF((K23)=0,\"\",(T23/K23))","v":2.2424667133847252E-2},null,{"$f":"'Rates Summary'!$G$29","v":14.94},1,{"$f":"X23*W23","v":14.94},null,{"$f":"Y23-R23","v":0.34999999999999964},{"$f":"IF((R23)=0,\"\",(AA23/R23))","v":2.3989033584646994E-2},null,{"$f":"'Rates Summary'!$H$29","v":15.22},1,{"$f":"AE23*AD23","v":15.22},null,{"$f":"AF23-Y23","v":0.28000000000000114},{"$f":"IF((Y23)=0,\"\",(AH23/Y23))","v":1.8741633199464602E-2},null,{"$f":"'Rates Summary'!$I$29","v":15.4},1,{"$f":"AL23*AK23","v":15.4},null,{"$f":"AM23-AF23","v":0.17999999999999972},{"$f":"IF((AF23)=0,\"\",(AO23/AF23))","v":1.1826544021024949E-2}]
["Smart Meter (SMIRR) Rate Rider",null,"Monthly",null,3.65,1,{"$f":"F24*E24","v":3.65},null,0,1,0,null,-3.65,{"$f":"IF((G24)=0,\"\",(M24/G24))","v":-1},null,0,1,0,null,0,{"$f":"IF((K24)=0,\"\",(T24/K24))","v":""},null,0,1,0,null,0,{"$f":"IF((R24)=0,\"\",(AA24/R24))","v":""},null,0,1,0,null,0,{"$f":"IF((Y24)=0,\"\",(AH24/Y24))","v":""},null,0,1,0,null,0,{"$f":"IF((AF24)=0,\"\",(AO24/AF24))","v":""}]
["Rate Rider Smart Meters Capital (2016)",null,"Monthly",null,0,1,0,null,{"$f":"'Rates Summary'!D10","v":0.43},1,0.43,null,0.43,1,null,0,1,0,null,-0.43,-1,null,0,1,0,null,0,"",null,0,1,0,null,0,"",null,0,1,0,null,0,""]
["Rate Rider Recovery of Stranded Meters (2016)",null,"Monthly",null,0,1,0,null,{"$f":"'Rates Summary'!$D$11","v":6.4},1,6.4,null,6.4,1,null,0,1,0,null,-6.4,-1,null,0,1,0,null,0,"",null,0,1,0,null,0,"",null,0,1,0,null,0,""]
[null,null,null,null,null,1,0,null,0,1,0,null,0,{"$f":"IF((G27)=0,\"\",(M27/G27))","v":""},null,0,1,0,null,0,"",null,0,1,0,null,0,"",null,0,1,0,null,0,"",null,0,1,0,null,0,""]
[null,null,null,null,null,1,0,null,0,1,0,null,0,{"$f":"IF((G28)=0,\"\",(M28/G28))","v":""},null,0,1,0,null,0,"",null,0,1,0,null,0,"",null,0,1,0,null,0,"",null,0,1,0,null,0,""]
["Distribution Volumetric Rate",null,"per kWh",null,1.06E-2,{"$f":"$E$18","v":1000},10.6,null,{"$f":"'Rates Summary'!$E$41","v":1.46E-2},{"$f":"$E$18","v":1000},14.6,null,4,{"$f":"IF((G29)=0,\"\",(M29/G29))","v":0.37735849056603776},null,{"$f":"'Rates Summary'!$F$41","v":1.5100000000000001E-2},{"$f":"$E$18","v":1000},15.100000000000001,null,0.50000000000000178,3.4246575342465876E-2,null,{"$f":"'Rates Summary'!$G$41","v":1.55E-2},{"$f":"$E$18","v":1000},15.5,null,0.39999999999999858,2.6490066225165466E-2,null,{"$f":"'Rates Summary'!$H$41","v":1.61E-2},{"$f":"$E$18","v":1000},16.100000000000001,null,0.60000000000000142,3.8709677419354931E-2,null,{"$f":"'Rates Summary'!$I$41","v":1.66E-2},{"$f":"$E$18","v":1000},16.600000000000001,null,0.5,3.1055900621118009E-2]
["Rate Rider Tax Change (2015)",null,"per kWh",null,-1E-4,{"$f":"$E$18","v":1000},-0.1,null,0,{"$f":"$E$18","v":1000},0,null,0.1,{"$f":"IF((G30)=0,\"\",(M30/G30))","v":-1},null,0,{"$f":"$E$18","v":1000},0,null,0,"",null,0,{"$f":"$E$18","v":1000},0,null,0,"",null,0,{"$f":"$E$18","v":1000},0,null,0,"",null,0,{"$f":"$E$18","v":1000},0,null,0,""]
["LRAM VA (2016)",null,"per kWh",null,0,{"$f":"$E$18","v":1000},0,null,{"$f":"'Rates Summary'!D7","v":8.0000000000000004E-4},1000,0.8,null,0.8,1,null,0,1000,0,null,-0.8,{"$f":"IF((K31)=0,\"\",(T31/K31))","v":-1},null,0,1000,0,null,0,"",null,0,1000,0,null,0,"",null,0,1000,0,null,0,""]
["Rate Rider Incremental Capital 2012 True-Up (2016)",null,"per kWh",null,0,{"$f":"$E$18","v":1000},0,null,{"$f":"'Rates Summary'!D9","v":2.0000000000000001E-4},1000,0.2,null,0.2,1,null,0,1000,0,null,-0.2,{"$f":"IF((K32)=0,\"\",(T32/K32))","v":-1},null,0,1000,0,null,0,"",null,0,1000,0,null,0,"",null,0,1000,0,null,0,""]
[null,null,"per kWh",null,null,1000,0,null,null,1000,0,null,0,{"$f":"IF((G33)=0,\"\",(M33/G33))","v":""},null,null,1000,0,null,0,"",null,null,1000,0,null,0,"",null,null,1000,0,null,0,"",null,null,1000,0,null,0,""]
[null,null,"per kWh",null,null,1000,0,null,null,1000,0,null,0,"",null,null,1000,0,null,0,"",null,null,1000,0,null,0,"",null,null,1000,0,null,0,"",null,null,1000,0,null,0,""]
[null,null,null,null,null,1000,0,null,null,1000,0,null,0,"",null,null,1000,0,null,0,"",null,null,1000,0,null,0,"",null,null,1000,0,null,0,"",null,null,1000,0,null,0,""]
[null,null,null,null,null,1000,0,null,null,1000,0,null,0,"",null,null,1000,0,null,0,"",null,null,1000,0,null,0,"",null,null,1000,0,null,0,"",null,null,1000,0,null,0,""]
[null,null,null,null,null,1000,0,null,null,1000,0,null,0,"",null,null,1000,0,null,0,"",null,null,1000,0,null,0,"",null,null,1000,0,null,0,"",null,null,1000,0,null,0,""]
[null,null,null,null,null,1000,0,null,null,1000,0,null,0,"",null,null,1000,0,null,0,"",null,null,1000,0,null,0,"",null,null,1000,0,null,0,"",null,null,1000,0,null,0,""]
["Sub-Total A (excluding pass through)",null,null,null,null,null,{"$f":"SUM(G23:G38)","v":40},null,null,null,{"$f":"SUM(K23:K38)","v":36.700000000000003},null,-3.2999999999999972,-8.2499999999999934E-2,null,null,null,{"$f":"SUM(R23:R38)","v":29.69},null,-7.0100000000000016,-0.191008174386921,null,null,null,{"$f":"SUM(Y23:Y38)","v":30.439999999999998},null,0.74999999999999645,2.5261030650050403E-2,null,null,null,{"$f":"SUM(AF23:AF38)","v":31.32},null,0.88000000000000256,{"$f":"IF((Y39)=0,\"\",(AH39/Y39))","v":2.8909329829172228E-2},null,null,null,{"$f":"SUM(AM23:AM38)","v":32},null,0.67999999999999972,2.1711366538952736E-2]
["Deferral/Variance Account Disposition Rate Rider (2016)",null,"per kWh",null,0,{"$f":"$E$18","v":1000},{"$f":"F40*E40","v":0},null,{"$f":"'Rates Summary'!D5","v":-6.9999999999999999E-4},{"$f":"$E$18","v":1000},{"$f":"J40*I40","v":-0.7},null,{"$f":"K40-G40","v":-0.7},1,null,0,{"$f":"$E$18","v":1000},{"$f":"Q40*P40","v":0},null,0.7,-1,null,0,{"$f":"$E$18","v":1000},{"$f":"X40*W40","v":0},null,0,"",null,0,{"$f":"$E$18","v":1000},{"$f":"AE40*AD40","v":0},null,0,{"$f":"IF((Y40)=0,\"\",(AH40/Y40))","v":""},null,0,{"$f":"$E$18","v":1000},{"$f":"AL40*AK40","v":0},null,0,""]
[null,null,null,null,null,{"$f":"$E$18","v":1000},{"$f":"F41*E41","v":0},null,{"$f":"E41","v":0},{"$f":"$E$18","v":1000},{"$f":"J41*I41","v":0},null,{"$f":"K41-G41","v":0},{"$f":"IF((G41)=0,\"\",(M41/G41))","v":""},null,null,{"$f":"$E$18","v":1000},{"$f":"Q41*P41","v":0},null,0,"",null,null,{"$f":"$E$18","v":1000},{"$f":"X41*W41","v":0},null,0,"",null,null,{"$f":"$E$18","v":1000},{"$f":"AE41*AD41","v":0},null,0,"",null,null,{"$f":"$E$18","v":1000},{"$f":"AL41*AK41","v":0},null,0,""]
["Rate Rider CGAAP Account 1576 (2016)",null,"per kWh",null,0,1000,0,null,{"$f":"'Rates Summary'!$D$8","v":-6.1999999999999998E-3},1000,-6.2,null,-6.2,1,null,0,1000,0,null,6.2,-1,null,0,1000,0,null,0,"",null,0,1000,0,null,0,"",null,0,1000,0,null,0,""]
["Disposition of Global Adjustment (2015)  \nApplicable to Non-RPP Customers",null,"per kWh",null,1.5599999999999999E-2,0,0,null,0,1000,0,null,0,"",null,0,1000,0,null,0,"",null,0,1000,0,null,0,"",null,0,1000,0,null,0,"",null,0,1000,0,null,0,""]
["Disposition of Global Adjustment (2016) \nApplicable to Non-RPP Customers",null,"per kWh",null,0,1000,0,null,{"$f":"'Rates Summary'!D6","v":2.0500000000000001E-2},0,0,null,0,"",null,0,1000,0,null,0,"",null,0,1000,0,null,0,"",null,0,1000,0,null,0,"",null,0,1000,0,null,0,""]
["Low Voltage Service Charge",null,"per kWh",null,5.9999999999999995E-4,1000,{"$f":"F45*E45","v":0.6},null,{"$f":"'Rates Summary'!D15","v":1.1000000000000001E-3},1000,{"$f":"J45*I45","v":1.1000000000000001},null,{"$f":"K45-G45","v":0.50000000000000011},{"$f":"IF((G45)=0,\"\",(M45/G45))","v":0.83333333333333359},null,{"$f":"I45","v":1.1000000000000001E-3},1000,{"$f":"Q45*P45","v":1.1000000000000001},null,{"$f":"R45-K45","v":0},0,null,{"$f":"P45","v":1.1000000000000001E-3},1000,{"$f":"X45*W45","v":1.1000000000000001},null,{"$f":"Y45-R45","v":0},0,null,{"$f":"W45","v":1.1000000000000001E-3},1000,{"$f":"AE45*AD45","v":1.1000000000000001},null,{"$f":"AF45-Y45","v":0},0,null,{"$f":"AD45","v":1.1000000000000001E-3},1000,{"$f":"AL45*AK45","v":1.1000000000000001},null,{"$f":"AM45-AF45","v":0},0]
["Line Losses on Cost of Power",null,"per kWh",null,{"$f":"IF(ISBLANK(C16)=TRUE, 0, IF(C16=\"TOU\", 0.64*$E$56+0.18*$E$57+0.18*$E$58, IF(AND(C16=\"non-TOU\", F60>0), E60,E59)))","v":0.10766000000000001},{"$f":"$E$18*(1+$E$75)-$E$18","v":34.400000000000091},3.7035040000000099,null,{"$f":"0.64*$E$56+0.18*$E$57+0.18*$E$58","v":0.10766000000000001},{"$f":"$E$18*(1+$I$75)-$E$18","v":39.299999999999955},4.2310379999999954,null,0.52753399999998551,0.14244186046511198,null,{"$f":"0.64*$E$56+0.18*$E$57+0.18*$E$58","v":0.10766000000000001},{"$f":"$E$18*(1+$I$75)-$E$18","v":39.299999999999955},{"$f":"Q46*P46","v":4.2310379999999954},null,{"$f":"R46-K46","v":0},0,null,{"$f":"0.64*$E$56+0.18*$E$57+0.18*$E$58","v":0.10766000000000001},{"$f":"$E$18*(1+$I$75)-$E$18","v":39.299999999999955},{"$f":"X46*W46","v":4.2310379999999954},null,{"$f":"Y46-R46","v":0},0,null,{"$f":"0.64*$E$56+0.18*$E$57+0.18*$E$58","v":0.10766000000000001},{"$f":"$E$18*(1+$I$75)-$E$18","v":39.299999999999955},{"$f":"AE46*AD46","v":4.2310379999999954},null,{"$f":"AF46-Y46","v":0},0,null,{"$f":"0.64*$E$56+0.18*$E$57+0.18*$E$58","v":0.10766000000000001},{"$f":"$E$18*(1+$I$75)-$E$18","v":39.299999999999955},{"$f":"AL46*AK46","v":4.2310379999999954},null,{"$f":"AM46-AF46","v":0},0]
["Smart Meter Entity Charge",null,"Monthly",null,0.79,1,{"$f":"F47*E47","v":0.79},null,0.79,1,{"$f":"J47*I47","v":0.79},null,{"$f":"K47-G47","v":0},null,null,0.79,1,{"$f":"Q47*P47","v":0.79},null,{"$f":"R47-K47","v":0},0,null,0.79,1,{"$f":"X47*W47","v":0.79},null,{"$f":"Y47-R47","v":0},0,null,0,1,{"$f":"AE47*AD47","v":0},null,{"$f":"AF47-Y47","v":-0.79},-1,null,0,1,{"$f":"AL47*AK47","v":0},null,{"$f":"AM47-AF47","v":0},""]
["Sub-Total B - Distribution (includes Sub-Total A)",null,null,null,null,null,{"$f":"SUM(G40:G47)+G39","v":45.09350400000001},null,null,null,{"$f":"SUM(K40:K47)+K39","v":35.921037999999996},null,{"$f":"K48-G48","v":-9.1724660000000142},{"$f":"IF((G48)=0,\"\",(M48/G48))","v":-0.20340991908723732},null,null,null,{"$f":"SUM(R40:R47)+R39","v":35.811037999999996},null,{"$f":"R48-K48","v":-0.10999999999999943},-3.0622723096142002E-3,null,null,null,{"$f":"SUM(Y40:Y47)+Y39","v":36.561037999999996},null,{"$f":"Y48-R48","v":0.75},2.0943263359191097E-2,null,null,null,{"$f":"SUM(AF40:AF47)+AF39","v":36.651038},null,{"$f":"AF48-Y48","v":9.0000000000003411E-2},2.4616368933508786E-3,null,null,null,{"$f":"SUM(AM40:AM47)+AM39","v":37.331037999999992},null,{"$f":"AM48-AF48","v":0.67999999999999261},1.855336266328917E-2]
["RTSR - Network",null,"per kWh",null,6.0000000000000001E-3,{"$f":"$E$18*(1+$E$75)","v":1034.4000000000001},{"$f":"F49*E49","v":6.2064000000000004},null,{"$f":"'Rates Summary'!D17","v":6.3E-3},{"$f":"$E$18*(1+$I$75)","v":1039.3},{"$f":"J49*I49","v":6.5475899999999996},null,{"$f":"K49-G49","v":0.34118999999999922},5.4973897911832818E-2,null,{"$f":"I49","v":6.3E-3},{"$f":"$E$18*(1+P75)","v":1039.3},{"$f":"Q49*P49","v":6.5475899999999996},null,0,0,null,{"$f":"P49","v":6.3E-3},{"$f":"$E$18*(1+W75)","v":1039.3},{"$f":"X49*W49","v":6.5475899999999996},null,0,0,null,{"$f":"W49","v":6.3E-3},{"$f":"$E$18*(1+AD75)","v":1039.3},{"$f":"AE49*AD49","v":6.5475899999999996},null,0,0,null,{"$f":"AD49","v":6.3E-3},{"$f":"$E$18*(1+AK75)","v":1039.3},{"$f":"AL49*AK49","v":6.5475899999999996},null,0,0]
["RTSR - Line and Transformation Connection",null,"per kWh",null,4.5999999999999999E-3,{"$f":"F49","v":1034.4000000000001},{"$f":"F50*E50","v":4.7582400000000007},null,{"$f":"'Rates Summary'!D18","v":5.1000000000000004E-3},{"$f":"J49","v":1039.3},{"$f":"J50*I50","v":5.3004300000000004},null,0.54218999999999973,0.11394759406839497,null,{"$f":"I50","v":5.1000000000000004E-3},{"$f":"Q49","v":1039.3},{"$f":"Q50*P50","v":5.3004300000000004},null,0,0,null,{"$f":"P50","v":5.1000000000000004E-3},{"$f":"X49","v":1039.3},{"$f":"X50*W50","v":5.3004300000000004},null,0,0,null,{"$f":"W50","v":5.1000000000000004E-3},{"$f":"AE49","v":1039.3},{"$f":"AE50*AD50","v":5.3004300000000004},null,0,0,null,{"$f":"AD50","v":5.1000000000000004E-3},{"$f":"AL49","v":1039.3},{"$f":"AL50*AK50","v":5.3004300000000004},null,0,0]
["Sub-Total C - Delivery (including Sub-Total B)",null,null,null,null,null,{"$f":"SUM(G48:G50)","v":56.058144000000013},null,null,null,{"$f":"SUM(K48:K50)","v":47.769057999999994},null,-8.2890860000000188,-0.14786586584100994,null,null,null,{"$f":"SUM(R48:R50)","v":47.659057999999995},null,-0.10999999999999943,-2.3027458485783713E-3,null,null,null,{"$f":"SUM(Y48:Y50)","v":48.409057999999995},null,0.75,1.5736777676134517E-2,null,null,null,{"$f":"SUM(AF48:AF50)","v":48.499057999999998},null,9.0000000000003411E-2,1.8591561934546096E-3,null,null,null,{"$f":"SUM(AM48:AM50)","v":49.179057999999991},null,0.67999999999999261,1.4020890879983539E-2]
["Wholesale Market Service Charge (WMSC)",null,"per kWh",null,4.4000000000000003E-3,{"$f":"F50","v":1034.4000000000001},{"$f":"F52*E52","v":4.5513600000000007},null,{"$f":"E52","v":4.4000000000000003E-3},{"$f":"J50","v":1039.3},{"$f":"J52*I52","v":4.5729199999999999},null,2.1559999999999135E-2,4.7370456303169016E-3,null,{"$f":"I52","v":4.4000000000000003E-3},{"$f":"Q50","v":1039.3},{"$f":"Q52*P52","v":4.5729199999999999},null,0,0,null,{"$f":"P52","v":4.4000000000000003E-3},{"$f":"X50","v":1039.3},{"$f":"X52*W52","v":4.5729199999999999},null,0,0,null,{"$f":"W52","v":4.4000000000000003E-3},{"$f":"AE50","v":1039.3},{"$f":"AE52*AD52","v":4.5729199999999999},null,0,0,null,{"$f":"AD52","v":4.4000000000000003E-3},{"$f":"AL50","v":1039.3},{"$f":"AL52*AK52","v":4.5729199999999999},null,0,0]
["Rural and Remote Rate Protection (RRRP)",null,"per kWh",null,1.2999999999999999E-3,{"$f":"F50","v":1034.4000000000001},1.3447200000000001,null,{"$f":"E53","v":1.2999999999999999E-3},{"$f":"J50","v":1039.3},1.3510899999999999,null,6.3699999999997647E-3,4.7370456303169163E-3,null,{"$f":"I53","v":1.2999999999999999E-3},{"$f":"Q50","v":1039.3},1.3510899999999999,null,0,0,null,{"$f":"P53","v":1.2999999999999999E-3},{"$f":"X50","v":1039.3},1.3510899999999999,null,0,0,null,{"$f":"W53","v":1.2999999999999999E-3},{"$f":"AE50","v":1039.3},1.3510899999999999,null,0,0,null,{"$f":"AD53","v":1.2999999999999999E-3},{"$f":"AL50","v":1039.3},1.3510899999999999,null,0,0]
["Standard Supply Service Charge",null,"Monthly",null,0.25,1,0.25,null,{"$f":"E54","v":0.25},1,0.25,null,0,0,null,{"$f":"I54","v":0.25},1,0.25,null,0,0,null,{"$f":"P54","v":0.25},1,0.25,null,0,0,null,{"$f":"W54","v":0.25},1,0.25,null,0,0,null,{"$f":"AD54","v":0.25},1,0.25,null,0,0]
["Debt Retirement Charge (DRC)",null,"per kWh",null,7.0000000000000001E-3,{"$f":"E18","v":1000},7,null,{"$f":"E55","v":7.0000000000000001E-3},{"$f":"E18","v":1000},7,null,0,0,null,{"$f":"I55","v":7.0000000000000001E-3},{"$f":"J55","v":1000},7,null,0,0,null,{"$f":"P55","v":7.0000000000000001E-3},{"$f":"Q55","v":1000},7,null,0,0,null,{"$f":"W55","v":7.0000000000000001E-3},{"$f":"X55","v":1000},7,null,0,0,null,{"$f":"AD55","v":7.0000000000000001E-3},{"$f":"AE55","v":1000},7,null,0,0]
["TOU - Off Peak",null,"per kWh",null,8.3000000000000004E-2,{"$f":"0.64*$E$18","v":640},53.120000000000005,null,{"$f":"E56","v":8.3000000000000004E-2},{"$f":"F56","v":640},53.120000000000005,null,0,0,null,{"$f":"I56","v":8.3000000000000004E-2},{"$f":"J56","v":640},53.120000000000005,null,0,0,null,{"$f":"P56","v":8.3000000000000004E-2},{"$f":"Q56","v":640},53.120000000000005,null,0,0,null,{"$f":"W56","v":8.3000000000000004E-2},{"$f":"X56","v":640},53.120000000000005,null,0,0,null,{"$f":"AD56","v":8.3000000000000004E-2},{"$f":"AE56","v":640},53.120000000000005,null,0,0]
["TOU - Mid Peak",null,"per kWh",null,0.128,{"$f":"0.18*$E$18","v":180},23.04,null,{"$f":"E57","v":0.128},{"$f":"F57","v":180},23.04,null,0,0,null,{"$f":"I57","v":0.128},180,23.04,null,0,0,null,{"$f":"P57","v":0.128},180,23.04,null,0,0,null,{"$f":"W57","v":0.128},180,23.04,null,0,0,null,{"$f":"AD57","v":0.128},180,23.04,null,0,0]
["TOU - On Peak",null,"per kWh",null,0.17499999999999999,{"$f":"0.18*$E$18","v":180},31.499999999999996,null,0.17499999999999999,{"$f":"F58","v":180},31.499999999999996,null,0,0,null,0.17499999999999999,180,31.499999999999996,null,0,0,null,0.17499999999999999,180,31.499999999999996,null,0,0,null,0.17499999999999999,180,31.499999999999996,null,0,0,null,0.17499999999999999,180,31.499999999999996,null,0,0]
["Energy - RPP - Tier 1",null,"per kWh",null,9.9000000000000005E-2,{"$f":"IF(AND($S$1=1, E18>=600), 600, IF(AND($S$1=1, AND(E18<600, E18>=0)), E18, IF(AND($S$1=2, E18>=1000), 1000, IF(AND($S$1=2, AND(E18<1000, E18>=0)), E18))))","v":600},{"$f":"F59*E59","v":59.400000000000006},null,9.9000000000000005E-2,{"$f":"F59","v":600},{"$f":"J59*I59","v":59.400000000000006},null,0,0,null,9.9000000000000005E-2,600,{"$f":"Q59*P59","v":59.400000000000006},null,0,0,null,9.9000000000000005E-2,600,{"$f":"X59*W59","v":59.400000000000006},null,0,0,null,9.9000000000000005E-2,600,{"$f":"AE59*AD59","v":59.400000000000006},null,0,0,null,9.9000000000000005E-2,600,{"$f":"AL59*AK59","v":59.400000000000006},null,0,0]
["Energy - RPP - Tier 2",null,"per kWh",null,0.11600000000000001,{"$f":"IF(AND($S$1=1, E18>=600), E18-600, IF(AND($S$1=1, AND(E18<600, E18>=0)), 0, IF(AND($S$1=2, E18>=1000), E18-1000, IF(AND($S$1=2, AND(E18<1000, E18>=0)), 0))))","v":400},{"$f":"F60*E60","v":46.400000000000006},null,0.11600000000000001,{"$f":"F60","v":400},{"$f":"J60*I60","v":46.400000000000006},null,0,0,null,0.11600000000000001,400,{"$f":"Q60*P60","v":46.400000000000006},null,0,0,null,0.11600000000000001,400,{"$f":"X60*W60","v":46.400000000000006},null,0,0,null,0.11600000000000001,400,{"$f":"AE60*AD60","v":46.400000000000006},null,0,0,null,0.11600000000000001,400,{"$f":"AL60*AK60","v":46.400000000000006},null,0,0]
[null,null,null,null,null,null,null,null,null,null,null,null,null,null,null,null,null,null,null,null,"",null,null,null,null,null,null,"",null,null,null,null,null,null,"",null,null,null,null,null,null,""]
["Total Bill on TOU (before Taxes)",null,null,null,null,null,{"$f":"SUM(G52:G58,G51)","v":176.86422400000004},null,null,null,{"$f":"SUM(K52:K58,K51)","v":168.60306800000001},null,{"$f":"K62-G62","v":-8.2611560000000281},{"$f":"IF((G62)=0,\"\",(M62/G62))","v":-4.6709028050805949E-2},null,null,null,{"$f":"SUM(R52:R58,R51)","v":168.49306799999999},null,{"$f":"R62-K62","v":-0.11000000000001364},-6.5241991919158689E-4,null,null,null,{"$f":"SUM(Y52:Y58,Y51)","v":169.24306799999999},null,{"$f":"Y62-R62","v":0.75},4.451221696550745E-3,null,null,null,{"$f":"SUM(AF52:AF58,AF51)","v":169.333068},null,{"$f":"AF62-Y62","v":9.0000000000003411E-2},5.3177953498221512E-4,null,null,null,{"$f":"SUM(AM52:AM58,AM51)","v":170.013068},null,{"$f":"AM62-AF62","v":0.68000000000000682},4.0157543238985476E-3]
["HST",null,null,null,0.13,null,{"$f":"G62*E63","v":22.992349120000007},null,0.13,null,{"$f":"K62*I63","v":21.918398840000002},null,-1.0739502800000054,-4.6709028050806019E-2,null,0.13,null,{"$f":"R62*P63","v":21.90409884},null,{"$f":"R63-K63","v":-1.43000000000022E-2},-6.524199191916064E-4,null,0.13,null,{"$f":"Y62*W63","v":22.00159884},null,{"$f":"Y63-R63","v":9.7500000000000142E-2},4.4512216965507511E-3,null,0.13,null,{"$f":"AF62*AD63","v":22.013298840000001},null,{"$f":"AF63-Y63","v":1.1700000000001154E-2},5.3177953498224743E-4,null,0.13,null,{"$f":"AM62*AK63","v":22.101698840000001},null,{"$f":"AM63-AF63","v":8.8400000000000034E-2},4.0157543238985086E-3]
["Total Bill (including HST)",null,null,null,null,null,{"$f":"G62+G63","v":199.85657312000004},null,null,null,{"$f":"K62+K63","v":190.52146684000002},null,-9.3351062800000193,-4.6709028050805887E-2,null,null,null,{"$f":"R62+R63","v":190.39716683999998},null,-0.12430000000003361,-6.5241991919168241E-4,null,null,null,{"$f":"Y62+Y63","v":191.24466683999998},null,0.84749999999999659,4.4512216965507268E-3,null,null,null,{"$f":"AF62+AF63","v":191.34636684},null,0.10170000000002233,5.3177953498231172E-4,null,null,null,{"$f":"AM62+AM63","v":192.11476684000002},null,0.76840000000001396,4.0157543238985806E-3]
["Ontario Clean Energy Benefit 1",null,null,null,null,null,{"$f":"ROUND(-G64*10%,2)","v":-19.989999999999998},null,null,null,null,null,19.989999999999998,-1,null,null,null,null,null,0,"",null,null,null,null,null,0,"",null,null,null,null,null,0,"",null,null,null,null,null,0,""]
["Total Bill on TOU (including OCEB)",null,null,null,null,null,{"$f":"G64+G65","v":179.86657312000003},null,null,null,{"$f":"K64+K65","v":190.52146684000002},null,10.65489371999999,5.923776461172392E-2,null,null,null,{"$f":"R64+R65","v":190.39716683999998},null,-0.12430000000003361,-6.5241991919168241E-4,null,null,null,{"$f":"Y64+Y65","v":191.24466683999998},null,0.84749999999999659,4.4512216965507268E-3,null,null,null,{"$f":"AF64+AF65","v":191.34636684},null,0.10170000000002233,5.3177953498231172E-4,null,null,null,{"$f":"AM64+AM65","v":192.11476684000002},null,0.76840000000001396,4.0157543238985806E-3]
[null,null,null,null,null,null,null,null,null,null,null,null,null,null,null,null,null,null,null,null,"",null,null,null,null,null,null,"",null,null,null,null,null,null,"",null,null,null,null,null,null,""]
["Total Bill on RPP (before Taxes)",null,null,null,null,null,{"$f":"SUM(G60:G61,G51,G52:G55)","v":115.60422400000002},null,null,null,{"$f":"SUM(K60:K61,K51,K52:K55)","v":107.343068},null,{"$f":"K68-G68","v":-8.2611560000000139},{"$f":"IF((G68)=0,\"\",(M68/G68))","v":-7.1460676038965609E-2},null,null,null,{"$f":"SUM(R60:R61,R51,R52:R55)","v":107.23306799999999},null,{"$f":"R68-K68","v":-0.11000000000001364},-1.0247517799660212E-3,null,null,null,{"$f":"SUM(Y60:Y61,Y51,Y52:Y55)","v":107.98306799999999},null,{"$f":"Y68-R68","v":0.75},6.9941111821961496E-3,null,null,null,{"$f":"SUM(AF60:AF61,AF51,AF52:AF55)","v":108.07306799999999},null,{"$f":"AF68-Y68","v":9.0000000000003411E-2},8.3346400196745128E-4,null,null,null,{"$f":"SUM(AM60:AM61,AM51,AM52:AM55)","v":108.753068},null,{"$f":"AM68-AF68","v":0.68000000000000682},6.2920393820966279E-3]
["HST",null,null,null,0.13,null,{"$f":"G68*E69","v":15.028549120000003},null,0.13,null,{"$f":"K68*I69","v":13.954598840000001},null,-1.0739502800000018,{"$f":"IF((G69)=0,\"\",(M69/G69))","v":-7.1460676038965609E-2},null,0.13,null,{"$f":"R68*P69","v":13.940298839999999},null,{"$f":"R69-K69","v":-1.43000000000022E-2},-1.0247517799660516E-3,null,0.13,null,{"$f":"Y68*W69","v":14.037798839999999},null,{"$f":"Y69-R69","v":9.7500000000000142E-2},6.9941111821961591E-3,null,0.13,null,{"$f":"AF68*AD69","v":14.04949884},null,{"$f":"AF69-Y69","v":1.1700000000001154E-2},8.3346400196750181E-4,null,0.13,null,{"$f":"AM68*AK69","v":14.13789884},null,{"$f":"AM69-AF69","v":8.8400000000000034E-2},6.2920393820965672E-3]
["Total Bill (including HST)",null,null,null,null,null,{"$f":"G68+G69","v":130.63277312000002},null,null,null,{"$f":"K68+K69","v":121.29766684000001},null,-9.3351062800000193,-7.1460676038965637E-2,null,null,null,{"$f":"R68+R69","v":121.17336683999999},null,-0.12430000000001939,-1.0247517799660539E-3,null,null,null,{"$f":"Y68+Y69","v":122.02086683999998},null,0.84749999999999659,6.9941111821961209E-3,null,null,null,{"$f":"AF68+AF69","v":122.12256683999999},null,0.10170000000000812,8.3346400196748619E-4,null,null,null,{"$f":"AM68+AM69","v":122.89096684},null,0.76840000000001396,6.2920393820966791E-3]
["Ontario Clean Energy Benefit 1",null,null,null,null,null,{"$f":"ROUND(-G70*10%,2)","v":-13.06},null,null,null,null,null,13.06,-1,null,null,null,null,null,0,"",null,null,null,null,null,0,"",null,null,null,null,null,0,"",null,null,null,null,null,0,""]
["Total Bill on RPP (including OCEB)",null,null,null,null,null,{"$f":"SUM(G70:G71)","v":117.57277312000002},null,null,null,{"$f":"SUM(K70:K71)","v":121.29766684000001},null,3.724893719999983,3.1681601285343419E-2,null,null,null,{"$f":"SUM(R70:R71)","v":121.17336683999999},null,-0.12430000000001939,-1.0247517799660539E-3,null,null,null,{"$f":"SUM(Y70:Y71)","v":122.02086683999998},null,0.84749999999999659,6.9941111821961209E-3,null,null,null,{"$f":"SUM(AF70:AF71)","v":122.12256683999999},null,0.10170000000000812,8.3346400196748619E-4,null,null,null,{"$f":"SUM(AM70:AM71)","v":122.89096684},null,0.76840000000001396,6.2920393820966791E-3]
[]
[]
["Loss Factor (%)",null,null,null,3.44E-2,null,null,null,3.9300000000000002E-2,null,null,null,null,null,null,3.9300000000000002E-2,null,null,null,null,null,null,3.9300000000000002E-2,null,null,null,null,null,null,3.9300000000000002E-2,null,null,null,null,null,null,3.9300000000000002E-2]
[]
["Distribution Excluding Rate Riders",null,null,null,"2015 Current Board-Approved",null,null,null,"2016 Test Year 1\nProposed",null,null,null,"Impact\n2016 TEST vs. \n2015 Bridge",null,null,"2017 Test Year 2\nProposed",null,null,null,"Impact\n2017 TEST 2 vs. \n2016 Test 1",null,null,"2018 Test Year 3\nProposed",null,null,null,"Impact\n2018 TEST 3 vs. \n2017 Test 2",null,null,"2019 Test Year 4\nProposed",null,null,null,"Impact\n2019 TEST 4 vs. \n2018 Test 3",null,null,"2020 Test Year 5 \nProposed",null,null,null,"Impact\n2020 TEST 5 vs. \n2019 Test 4"]
[null,null,"Charge Unit",null,"Rate","Volume","Charge",null,"Rate","Volume","Charge",null,"$ Change","% Change",null,"Rate","Volume","Charge",null,"$ Change","% Change",null,"Rate","Volume","Charge",null,"$ Change","% Change",null,"Rate","Volume","Charge",null,"$ Change","% Change",null,"Rate","Volume","Charge",null,"$ Change","% Change"]
[null,null,null,null,"($)",null,"($)",null,"($)",null,"($)",null,null,null,null,"($)",null,"($)",null,null,null,null,"($)",null,"($)",null,null,null,null,"($)",null,"($)",null,null,null,null,"($)",null,"($)"]
["Monthly Service Charge",null,"Monthly",null,25.85,1,{"$f":"F80*E80","v":25.85},null,{"$f":"'Rates Summary'!$E$29","v":14.27},1,{"$f":"J80*I80","v":14.27},null,{"$f":"K80-G80","v":-11.580000000000002},{"$f":"IF((G80)=0,\"\",(M80/G80))","v":-0.44796905222437144},null,{"$f":"'Rates Summary'!$F$29","v":14.59},1,{"$f":"Q80*P80","v":14.59},null,{"$f":"R80-K80","v":0.32000000000000028},{"$f":"IF((K80)=0,\"\",(T80/K80))","v":2.2424667133847252E-2},null,{"$f":"'Rates Summary'!$G$29","v":14.94},1,{"$f":"X80*W80","v":14.94},null,{"$f":"Y80-R80","v":0.34999999999999964},{"$f":"IF((R80)=0,\"\",(AA80/R80))","v":2.3989033584646994E-2},null,{"$f":"'Rates Summary'!$H$29","v":15.22},1,{"$f":"AE80*AD80","v":15.22},null,{"$f":"AF80-Y80","v":0.28000000000000114},{"$f":"IF((Y80)=0,\"\",(AH80/Y80))","v":1.8741633199464602E-2},null,{"$f":"'Rates Summary'!$I$29","v":15.4},1,{"$f":"AL80*AK80","v":15.4},null,{"$f":"AM80-AF80","v":0.17999999999999972},{"$f":"IF((AF80)=0,\"\",(AO80/AF80))","v":1.1826544021024949E-2}]
["Distribution Volumetric Rate",null,"per kWh",null,1.06E-2,{"$f":"$E$18","v":1000},{"$f":"F81*E81","v":10.6},null,{"$f":"'Rates Summary'!$E$41","v":1.46E-2},{"$f":"$E$18","v":1000},14.6,null,4,{"$f":"IF((G81)=0,\"\",(M81/G81))","v":0.37735849056603776},null,{"$f":"'Rates Summary'!$F$41","v":1.5100000000000001E-2},{"$f":"$E$18","v":1000},15.100000000000001,null,0.50000000000000178,{"$f":"IF((K81)=0,\"\",(T81/K81))","v":3.4246575342465876E-2},null,{"$f":"'Rates Summary'!$G$41","v":1.55E-2},{"$f":"$E$18","v":1000},15.5,null,0.39999999999999858,{"$f":"IF((R81)=0,\"\",(AA81/R81))","v":2.6490066225165466E-2},null,{"$f":"'Rates Summary'!$H$41","v":1.61E-2},{"$f":"$E$18","v":1000},16.100000000000001,null,0.60000000000000142,{"$f":"IF((Y81)=0,\"\",(AH81/Y81))","v":3.8709677419354931E-2},null,{"$f":"'Rates Summary'!$I$41","v":1.66E-2},{"$f":"$E$18","v":1000},16.600000000000001,null,0.5,{"$f":"IF((AF81)=0,\"\",(AO81/AF81))","v":3.1055900621118009E-2}]
["\"Regular\" Distribution Only",null,null,null,null,null,{"$f":"SUM(G79:G81)","v":36.450000000000003},null,null,null,{"$f":"SUM(K79:K81)","v":28.869999999999997},null,-7.5800000000000054,-0.20795610425240069,null,null,null,{"$f":"SUM(R79:R81)","v":29.69},null,0.82000000000000384,2.8403186698995633E-2,null,null,null,{"$f":"SUM(Y79:Y81)","v":30.439999999999998},null,0.74999999999999645,2.5261030650050403E-2,null,null,null,{"$f":"SUM(AF79:AF81)","v":31.32},null,0.88000000000000256,2.8909329829172228E-2,null,null,null,{"$f":"SUM(AM79:AM81)","v":32},null,0.67999999999999972,2.1711366538952736E-2]
[]
[]
[null,"Residential (kWh) - 100, 250, 500, 800, 1000, 1500, 2000"]
[null,"GS<50kW (kWh) - 1000, 2000, 5000, 10000, 15000"]
[null,"GS>50kW (kW) - 60, 100, 500, 1000"]
[null,"Large User - range appropriate for utility"]
[null,"Lighting Classes and USL - 150 kWh and 1 kW, range appropriate for utility."]
[]
[null,null,"Note that cells with the highlighted color shown to the left indicate quantities that are loss adjusted."]

{"sheet":"Bill Impact GS < 50 5000kWh","index":12,"n_rows":91,"n_cols":42,"rows_kept":91,"cut":false,"hidden":false,"merged":[[19,33,19,34],[19,36,19,38],[20,20,21,20],[20,26,21,26],[19,40,19,41],[19,22,19,24],[19,26,19,27],[19,29,19,31],[20,27,21,27],[20,33,21,33],[20,34,21,34],[20,40,21,40],[20,41,21,41],[2,0,2,9],[9,0,9,13],[10,0,10,13],[13,2,13,13],[13,15,13,26],[19,4,19,6],[19,8,19,10],[19,12,19,13],[19,15,19,17],[19,19,19,20],[64,0,64,2],[20,2,21,2],[20,12,21,12],[20,13,21,13],[20,19,21,19],[76,29,76,31],[76,33,76,34],[77,34,78,34],[65,0,65,2],[70,0,70,2],[71,0,71,2],[76,4,76,6],[76,8,76,10],[76,12,76,13],[77,40,78,40],[77,41,78,41],[76,36,76,38],[76,40,76,41],[77,2,78,2],[77,12,78,12],[77,13,78,13],[77,19,78,19],[77,20,78,20],[77,26,78,26],[77,27,78,27],[77,33,78,33],[76,15,76,17],[76,19,76,20],[76,22,76,24],[76,26,76,27]]}
[null,null,null,null,null,null,null,null,null,null,null,null,"File Number:",{"$f":"EBNUMBER","v":"EB-2015-0083"},null,null,null,null,1]
[null,null,null,null,null,null,null,null,null,null,null,null,"Exhibit:",{"$f":"'Bill Impact Resi 204kWh'!$N$2","v":8}]
[null,null,null,null,null,null,null,null,null,null,null,null,"Tab:",{"$f":"'Bill Impact Resi 204kWh'!$N$3","v":4}]
[null,null,null,null,null,null,null,null,null,null,null,null,"Schedule:",{"$f":"'Bill Impact Resi 204kWh'!$N$4","v":3}]
[null,null,null,null,null,null,null,null,null,null,null,null,"Page:"]
[]
[null,null,null,null,null,null,null,null,null,null,null,null,"Date:",{"$f":"'Bill Impact Resi 204kWh'!$N$7","v":"Settlement"}]
[]
[]
["Appendix 2-W"]
["Bill Impacts"]
[]
[]
["Customer Class:",null,"General Service Less Than 50 kW",null,null,null,null,null,null,null,null,null,null,null,null,{"$f":"C14","v":"General Service Less Than 50 kW"},null,null,null,null,null,null,null,null,null,null,null,null,null,null,null,null,null,null,null,null,{"$f":"P14","v":"General Service Less Than 50 kW"}]
[]
["TOU / non-TOU:",null,"TOU"]
[]
[null,null,"Consumption",null,5000," kWh"]
[]
[null,null,null,null,"2015 Current Board-Approved",null,null,null,"2016 Test Year 1\nProposed",null,null,null,"Impact\n2016 TEST vs. \n2015 Bridge",null,null,"2017 Test Year 2\nProposed",null,null,null,"Impact\n2017 TEST 2 vs. \n2016 Test 1",null,null,"2018 Test Year 3\nProposed",null,null,null,"Impact\n2018 TEST 3 vs. \n2017 Test 2",null,null,"2019 Test Year 4\nProposed",null,null,null,"Impact\n2019 TEST 4 vs. \n2018 Test 3",null,null,"2020 Test Year 5 \nProposed",null,null,null,"Impact\n2019 TEST 5 vs. \n2019 Test 4"]
[null,null,"Charge Unit",null,"Rate","Volume","Charge",null,"Rate","Volume","Charge",null,"$ Change","% Change",null,"Rate","Volume","Charge",null,"$ Change","% Change",null,"Rate","Volume","Charge",null,"$ Change","% Change",null,"Rate","Volume","Charge",null,"$ Change","% Change",null,"Rate","Volume","Charge",null,"$ Change","% Change"]
[null,null,null,null,"($)",null,"($)",null,"($)",null,"($)",null,null,null,null,"($)",null,"($)",null,null,null,null,"($)",null,"($)",null,null,null,null,"($)",null,"($)",null,null,null,null,"($)",null,"($)"]
["Monthly Service Charge",null,"Monthly",null,25.85,1,{"$f":"F23*E23","v":25.85},null,{"$f":"'Rates Summary'!$E$29","v":14.27},1,{"$f":"J23*I23","v":14.27},null,{"$f":"K23-G23","v":-11.580000000000002},{"$f":"IF((G23)=0,\"\",(M23/G23))","v":-0.44796905222437144},null,{"$f":"'Rates Summary'!$F$29","v":14.59},1,{"$f":"Q23*P23","v":14.59},null,{"$f":"R23-K23","v":0.32000000000000028},{"$f":"IF((K23)=0,\"\",(T23/K23))","v":2.2424667133847252E-2},null,{"$f":"'Rates Summary'!$G$29","v":14.94},1,{"$f":"X23*W23","v":14.94},null,{"$f":"Y23-R23","v":0.34999999999999964},{"$f":"IF((R23)=0,\"\",(AA23/R23))","v":2.3989033584646994E-2},null,{"$f":"'Rates Summary'!$H$29","v":15.22},1,{"$f":"AE23*AD23","v":15.22},null,{"$f":"AF23-Y23","v":0.28000000000000114},{"$f":"IF((Y23)=0,\"\",(AH23/Y23))","v":1.8741633199464602E-2},null,{"$f":"'Rates Summary'!$I$29","v":15.4},1,{"$f":"AL23*AK23","v":15.4},null,{"$f":"AM23-AF23","v":0.17999999999999972},{"$f":"IF((AF23)=0,\"\",(AO23/AF23))","v":1.1826544021024949E-2}]
["Smart Meter (SMIRR) Rate Rider",null,"Monthly",null,3.65,1,{"$f":"F24*E24","v":3.65},null,0,1,0,null,-3.65,{"$f":"IF((G24)=0,\"\",(M24/G24))","v":-1},null,0,1,0,null,0,{"$f":"IF((K24)=0,\"\",(T24/K24))","v":""},null,0,1,0,null,0,{"$f":"IF((R24)=0,\"\",(AA24/R24))","v":""},null,0,1,0,null,0,{"$f":"IF((Y24)=0,\"\",(AH24/Y24))","v":""},null,0,1,0,null,0,{"$f":"IF((AF24)=0,\"\",(AO24/AF24))","v":""}]
["Rate Rider Smart Meters Capital (2016)",null,"Monthly",null,0,1,0,null,{"$f":"'Rates Summary'!D10","v":0.43},1,0.43,null,0.43,1,null,0,1,0,null,-0.43,-1,null,0,1,0,null,0,"",null,0,1,0,null,0,"",null,0,1,0,null,0,""]
["Rate Rider Recovery of Stranded Meters (2016)",null,"Monthly",null,0,1,0,null,{"$f":"'Rates Summary'!$D$11","v":6.4},1,6.4,null,6.4,1,null,0,1,0,null,-6.4,-1,null,0,1,0,null,0,"",null,0,1,0,null,0,"",null,0,1,0,null,0,""]
[null,null,null,null,null,1,0,null,0,1,0,null,0,{"$f":"IF((G27)=0,\"\",(M27/G27))","v":""},null,0,1,0,null,0,"",null,0,1,0,null,0,"",null,0,1,0,null,0,"",null,0,1,0,null,0,""]
[null,null,null,null,null,1,0,null,0,1,0,null,0,{"$f":"IF((G28)=0,\"\",(M28/G28))","v":""},null,0,1,0,null,0,"",null,0,1,0,null,0,"",null,0,1,0,null,0,"",null,0,1,0,null,0,""]
["Distribution Volumetric Rate",null,"per kWh",null,1.06E-2,{"$f":"$E$18","v":5000},53,null,{"$f":"'Rates Summary'!$E$41","v":1.46E-2},{"$f":"$E$18","v":5000},73,null,20,{"$f":"IF((G29)=0,\"\",(M29/G29))","v":0.37735849056603776},null,{"$f":"'Rates Summary'!$F$41","v":1.5100000000000001E-2},{"$f":"$E$18","v":5000},75.5,null,2.5,3.4246575342465752E-2,null,{"$f":"'Rates Summary'!$G$41","v":1.55E-2},{"$f":"$E$18","v":5000},77.5,null,2,2.6490066225165563E-2,null,{"$f":"'Rates Summary'!$H$41","v":1.61E-2},{"$f":"$E$18","v":5000},80.5,null,3,3.870967741935484E-2,null,{"$f":"'Rates Summary'!$I$41","v":1.66E-2},{"$f":"$E$18","v":5000},83,null,2.5,3.1055900621118012E-2]
["Rate Rider Tax Change (2015)",null,"per kWh",null,-1E-4,{"$f":"$E$18","v":5000},-0.5,null,0,{"$f":"$E$18","v":5000},0,null,0.5,{"$f":"IF((G30)=0,\"\",(M30/G30))","v":-1},null,0,{"$f":"$E$18","v":5000},0,null,0,"",null,0,{"$f":"$E$18","v":5000},0,null,0,"",null,0,{"$f":"$E$18","v":5000},0,null,0,"",null,0,{"$f":"$E$18","v":5000},0,null,0,""]
["LRAM VA (2016)",null,"per kWh",null,0,{"$f":"$E$18","v":5000},0,null,{"$f":"'Rates Summary'!D7","v":8.0000000000000004E-4},5000,4,null,4,1,null,0,5000,0,null,-4,{"$f":"IF((K31)=0,\"\",(T31/K31))","v":-1},null,0,5000,0,null,0,"",null,0,5000,0,null,0,"",null,0,5000,0,null,0,""]
["Rate Rider Incremental Capital 2012 True-Up (2016)",null,"per kWh",null,0,{"$f":"$E$18","v":5000},0,null,{"$f":"'Rates Summary'!D9","v":2.0000000000000001E-4},5000,1,null,1,1,null,0,5000,0,null,-1,{"$f":"IF((K32)=0,\"\",(T32/K32))","v":-1},null,0,5000,0,null,0,"",null,0,5000,0,null,0,"",null,0,5000,0,null,0,""]
[null,null,"per kWh",null,null,5000,0,null,null,5000,0,null,0,{"$f":"IF((G33)=0,\"\",(M33/G33))","v":""},null,null,5000,0,null,0,"",null,null,5000,0,null,0,"",null,null,5000,0,null,0,"",null,null,5000,0,null,0,""]
[null,null,"per kWh",null,null,5000,0,null,null,5000,0,null,0,"",null,null,5000,0,null,0,"",null,null,5000,0,null,0,"",null,null,5000,0,null,0,"",null,null,5000,0,null,0,""]
[null,null,null,null,null,5000,0,null,null,5000,0,null,0,"",null,null,5000,0,null,0,"",null,null,5000,0,null,0,"",null,null,5000,0,null,0,"",null,null,5000,0,null,0,""]
[null,null,null,null,null,5000,0,null,null,5000,0,null,0,"",null,null,5000,0,null,0,"",null,null,5000,0,null,0,"",null,null,5000,0,null,0,"",null,null,5000,0,null,0,""]
[null,null,null,null,null,5000,0,null,null,5000,0,null,0,"",null,null,5000,0,null,0,"",null,null,5000,0,null,0,"",null,null,5000,0,null,0,"",null,null,5000,0,null,0,""]
[null,null,null,null,null,5000,0,null,null,5000,0,null,0,"",null,null,5000,0,null,0,"",null,null,5000,0,null,0,"",null,null,5000,0,null,0,"",null,null,5000,0,null,0,""]
["Sub-Total A (excluding pass through)",null,null,null,null,null,{"$f":"SUM(G23:G38)","v":82},null,null,null,{"$f":"SUM(K23:K38)","v":99.1},null,17.099999999999994,0.20853658536585359,null,null,null,{"$f":"SUM(R23:R38)","v":90.09},null,-9.0099999999999909,-9.0918264379414651E-2,null,null,null,{"$f":"SUM(Y23:Y38)","v":92.44},null,2.3499999999999943,2.6085026085026022E-2,null,null,null,{"$f":"SUM(AF23:AF38)","v":95.72},null,3.2800000000000011,{"$f":"IF((Y39)=0,\"\",(AH39/Y39))","v":3.5482475118996118E-2},null,null,null,{"$f":"SUM(AM23:AM38)","v":98.4},null,2.6800000000000068,2.799832845800258E-2]
["Deferral/Variance Account Disposition Rate Rider (2016)",null,"per kWh",null,0,{"$f":"$E$18","v":5000},{"$f":"F40*E40","v":0},null,{"$f":"'Rates Summary'!D5","v":-6.9999999999999999E-4},{"$f":"$E$18","v":5000},{"$f":"J40*I40","v":-3.5},null,{"$f":"K40-G40","v":-3.5},1,null,0,{"$f":"$E$18","v":5000},{"$f":"Q40*P40","v":0},null,3.5,-1,null,0,{"$f":"$E$18","v":5000},{"$f":"X40*W40","v":0},null,0,"",null,0,{"$f":"$E$18","v":5000},{"$f":"AE40*AD40","v":0},null,0,{"$f":"IF((Y40)=0,\"\",(AH40/Y40))","v":""},null,0,{"$f":"$E$18","v":5000},{"$f":"AL40*AK40","v":0},null,0,""]
[null,null,null,null,null,{"$f":"$E$18","v":5000},{"$f":"F41*E41","v":0},null,{"$f":"E41","v":0},{"$f":"$E$18","v":5000},{"$f":"J41*I41","v":0},null,{"$f":"K41-G41","v":0},{"$f":"IF((G41)=0,\"\",(M41/G41))","v":""},null,null,{"$f":"$E$18","v":5000},{"$f":"Q41*P41","v":0},null,0,"",null,null,{"$f":"$E$18","v":5000},{"$f":"X41*W41","v":0},null,0,"",null,null,{"$f":"$E$18","v":5000},{"$f":"AE41*AD41","v":0},null,0,"",null,null,{"$f":"$E$18","v":5000},{"$f":"AL41*AK41","v":0},null,0,""]
["Rate Rider CGAAP Account 1576 (2016)",null,"per kWh",null,0,5000,0,null,{"$f":"'Rates Summary'!$D$8","v":-6.1999999999999998E-3},5000,-31,null,-31,1,null,0,5000,0,null,31,-1,null,0,5000,0,null,0,"",null,0,5000,0,null,0,"",null,0,5000,0,null,0,""]
["Disposition of Global Adjustment (2015)  \nApplicable to Non-RPP Customers",null,"per kWh",null,1.5599999999999999E-2,0,0,null,0,5000,0,null,0,"",null,0,5000,0,null,0,"",null,0,5000,0,null,0,"",null,0,5000,0,null,0,"",null,0,5000,0,null,0,""]
["Disposition of Global Adjustment (2016) \nApplicable to Non-RPP Customers",null,"per kWh",null,0,5000,0,null,{"$f":"'Rates Summary'!D6","v":2.0500000000000001E-2},0,0,null,0,"",null,0,5000,0,null,0,"",null,0,5000,0,null,0,"",null,0,5000,0,null,0,"",null,0,5000,0,null,0,""]
["Low Voltage Service Charge",null,"per kWh",null,5.9999999999999995E-4,5000,{"$f":"F45*E45","v":2.9999999999999996},null,{"$f":"'Rates Summary'!D15","v":1.1000000000000001E-3},5000,{"$f":"J45*I45","v":5.5},null,{"$f":"K45-G45","v":2.5000000000000004},{"$f":"IF((G45)=0,\"\",(M45/G45))","v":0.83333333333333359},null,{"$f":"I45","v":1.1000000000000001E-3},5000,{"$f":"Q45*P45","v":5.5},null,{"$f":"R45-K45","v":0},0,null,{"$f":"P45","v":1.1000000000000001E-3},5000,{"$f":"X45*W45","v":5.5},null,{"$f":"Y45-R45","v":0},0,null,{"$f":"W45","v":1.1000000000000001E-3},5000,{"$f":"AE45*AD45","v":5.5},null,{"$f":"AF45-Y45","v":0},0,null,{"$f":"AD45","v":1.1000000000000001E-3},5000,{"$f":"AL45*AK45","v":5.5},null,{"$f":"AM45-AF45","v":0},0]
["Line Losses on Cost of Power",null,"per kWh",null,{"$f":"IF(ISBLANK(C16)=TRUE, 0, IF(C16=\"TOU\", 0.64*$E$56+0.18*$E$57+0.18*$E$58, IF(AND(C16=\"non-TOU\", F60>0), E60,E59)))","v":0.10766000000000001},{"$f":"$E$18*(1+$E$75)-$E$18","v":172},18.517520000000001,null,{"$f":"0.64*$E$56+0.18*$E$57+0.18*$E$58","v":0.10766000000000001},{"$f":"$E$18*(1+$I$75)-$E$18","v":196.49999999999909},21.155189999999902,null,2.6376699999999005,0.1424418604651109,null,{"$f":"0.64*$E$56+0.18*$E$57+0.18*$E$58","v":0.10766000000000001},{"$f":"$E$18*(1+$I$75)-$E$18","v":196.49999999999909},{"$f":"Q46*P46","v":21.155189999999902},null,{"$f":"R46-K46","v":0},0,null,{"$f":"0.64*$E$56+0.18*$E$57+0.18*$E$58","v":0.10766000000000001},{"$f":"$E$18*(1+$I$75)-$E$18","v":196.49999999999909},{"$f":"X46*W46","v":21.155189999999902},null,{"$f":"Y46-R46","v":0},0,null,{"$f":"0.64*$E$56+0.18*$E$57+0.18*$E$58","v":0.10766000000000001},{"$f":"$E$18*(1+$I$75)-$E$18","v":196.49999999999909},{"$f":"AE46*AD46","v":21.155189999999902},null,{"$f":"AF46-Y46","v":0},0,null,{"$f":"0.64*$E$56+0.18*$E$57+0.18*$E$58","v":0.10766000000000001},{"$f":"$E$18*(1+$I$75)-$E$18","v":196.49999999999909},{"$f":"AL46*AK46","v":21.155189999999902},null,{"$f":"AM46-AF46","v":0},0]
["Smart Meter Entity Charge",null,"Monthly",null,0.79,1,{"$f":"F47*E47","v":0.79},null,0.79,1,{"$f":"J47*I47","v":0.79},null,{"$f":"K47-G47","v":0},null,null,0.79,1,{"$f":"Q47*P47","v":0.79},null,{"$f":"R47-K47","v":0},0,null,0.79,1,{"$f":"X47*W47","v":0.79},null,{"$f":"Y47-R47","v":0},0,null,0,1,{"$f":"AE47*AD47","v":0},null,{"$f":"AF47-Y47","v":-0.79},-1,null,0,1,{"$f":"AL47*AK47","v":0},null,{"$f":"AM47-AF47","v":0},""]
["Sub-Total B - Distribution (includes Sub-Total A)",null,null,null,null,null,{"$f":"SUM(G40:G47)+G39","v":104.30752},null,null,null,{"$f":"SUM(K40:K47)+K39","v":92.045189999999891},null,{"$f":"K48-G48","v":-12.262330000000105},{"$f":"IF((G48)=0,\"\",(M48/G48))","v":-0.11755940511288261},null,null,null,{"$f":"SUM(R40:R47)+R39","v":117.5351899999999},null,{"$f":"R48-K48","v":25.490000000000009},0.27692919097673696,null,null,null,{"$f":"SUM(Y40:Y47)+Y39","v":119.88518999999989},null,{"$f":"Y48-R48","v":2.3499999999999943},1.9994012006106395E-2,null,null,null,{"$f":"SUM(AF40:AF47)+AF39","v":122.3751899999999},null,{"$f":"AF48-Y48","v":2.4900000000000091},2.0769871574629121E-2,null,null,null,{"$f":"SUM(AM40:AM47)+AM39","v":125.05518999999991},null,{"$f":"AM48-AF48","v":2.6800000000000068},2.1899863853122589E-2]
["RTSR - Network",null,"per kWh",null,6.0000000000000001E-3,{"$f":"$E$18*(1+$E$75)","v":5172},{"$f":"F49*E49","v":31.032},null,{"$f":"'Rates Summary'!D17","v":6.3E-3},{"$f":"$E$18*(1+$I$75)","v":5196.4999999999991},{"$f":"J49*I49","v":32.737949999999998},null,{"$f":"K49-G49","v":1.7059499999999979},5.4973897911832881E-2,null,{"$f":"I49","v":6.3E-3},{"$f":"$E$18*(1+P75)","v":5196.4999999999991},{"$f":"Q49*P49","v":32.737949999999998},null,0,0,null,{"$f":"P49","v":6.3E-3},{"$f":"$E$18*(1+W75)","v":5196.4999999999991},{"$f":"X49*W49","v":32.737949999999998},null,0,0,null,{"$f":"W49","v":6.3E-3},{"$f":"$E$18*(1+AD75)","v":5196.4999999999991},{"$f":"AE49*AD49","v":32.737949999999998},null,0,0,null,{"$f":"AD49","v":6.3E-3},{"$f":"$E$18*(1+AK75)","v":5196.4999999999991},{"$f":"AL49*AK49","v":32.737949999999998},null,0,0]
["RTSR - Line and Transformation Connection",null,"per kWh",null,4.5999999999999999E-3,{"$f":"F49","v":5172},{"$f":"F50*E50","v":23.7912},null,{"$f":"'Rates Summary'!D18","v":5.1000000000000004E-3},{"$f":"J49","v":5196.4999999999991},{"$f":"J50*I50","v":26.502149999999997},null,2.7109499999999969,0.1139475940683949,null,{"$f":"I50","v":5.1000000000000004E-3},{"$f":"Q49","v":5196.4999999999991},{"$f":"Q50*P50","v":26.502149999999997},null,0,0,null,{"$f":"P50","v":5.1000000000000004E-3},{"$f":"X49","v":5196.4999999999991},{"$f":"X50*W50","v":26.502149999999997},null,0,0,null,{"$f":"W50","v":5.1000000000000004E-3},{"$f":"AE49","v":5196.4999999999991},{"$f":"AE50*AD50","v":26.502149999999997},null,0,0,null,{"$f":"AD50","v":5.1000000000000004E-3},{"$f":"AL49","v":5196.4999999999991},{"$f":"AL50*AK50","v":26.502149999999997},null,0,0]
["Sub-Total C - Delivery (including Sub-Total B)",null,null,null,null,null,{"$f":"SUM(G48:G50)","v":159.13072},null,null,null,{"$f":"SUM(K48:K50)","v":151.28528999999989},null,-7.8454300000001069,-4.9301794147604605E-2,null,null,null,{"$f":"SUM(R48:R50)","v":176.7752899999999},null,25.490000000000009,0.16848961323338196,null,null,null,{"$f":"SUM(Y48:Y50)","v":179.12528999999989},null,2.3499999999999943,1.3293713165454265E-2,null,null,null,{"$f":"SUM(AF48:AF50)","v":181.6152899999999},null,2.4900000000000091,1.3900884682447746E-2,null,null,null,{"$f":"SUM(AM48:AM50)","v":184.29528999999991},null,2.6800000000000068,1.475646681510135E-2]
["Wholesale Market Service Charge (WMSC)",null,"per kWh",null,4.4000000000000003E-3,{"$f":"F50","v":5172},{"$f":"F52*E52","v":22.756800000000002},null,{"$f":"E52","v":4.4000000000000003E-3},{"$f":"J50","v":5196.4999999999991},{"$f":"J52*I52","v":22.864599999999996},null,0.1077999999999939,4.7370456303168235E-3,null,{"$f":"I52","v":4.4000000000000003E-3},{"$f":"Q50","v":5196.4999999999991},{"$f":"Q52*P52","v":22.864599999999996},null,0,0,null,{"$f":"P52","v":4.4000000000000003E-3},{"$f":"X50","v":5196.4999999999991},{"$f":"X52*W52","v":22.864599999999996},null,0,0,null,{"$f":"W52","v":4.4000000000000003E-3},{"$f":"AE50","v":5196.4999999999991},{"$f":"AE52*AD52","v":22.864599999999996},null,0,0,null,{"$f":"AD52","v":4.4000000000000003E-3},{"$f":"AL50","v":5196.4999999999991},{"$f":"AL52*AK52","v":22.864599999999996},null,0,0]
["Rural and Remote Rate Protection (RRRP)",null,"per kWh",null,1.2999999999999999E-3,{"$f":"F50","v":5172},6.7235999999999994,null,{"$f":"E53","v":1.2999999999999999E-3},{"$f":"J50","v":5196.4999999999991},6.7554499999999988,null,3.184999999999949E-2,4.737045630317017E-3,null,{"$f":"I53","v":1.2999999999999999E-3},{"$f":"Q50","v":5196.4999999999991},6.7554499999999988,null,0,0,null,{"$f":"P53","v":1.2999999999999999E-3},{"$f":"X50","v":5196.4999999999991},6.7554499999999988,null,0,0,null,{"$f":"W53","v":1.2999999999999999E-3},{"$f":"AE50","v":5196.4999999999991},6.7554499999999988,null,0,0,null,{"$f":"AD53","v":1.2999999999999999E-3},{"$f":"AL50","v":5196.4999999999991},6.7554499999999988,null,0,0]
["Standard Supply Service Charge",null,"Monthly",null,0.25,1,0.25,null,{"$f":"E54","v":0.25},1,0.25,null,0,0,null,{"$f":"I54","v":0.25},1,0.25,null,0,0,null,{"$f":"P54","v":0.25},1,0.25,null,0,0,null,{"$f":"W54","v":0.25},1,0.25,null,0,0,null,{"$f":"AD54","v":0.25},1,0.25,null,0,0]
["Debt Retirement Charge (DRC)",null,"per kWh",null,7.0000000000000001E-3,{"$f":"E18","v":5000},35,null,{"$f":"E55","v":7.0000000000000001E-3},{"$f":"E18","v":5000},35,null,0,0,null,{"$f":"I55","v":7.0000000000000001E-3},{"$f":"J55","v":5000},35,null,0,0,null,{"$f":"P55","v":7.0000000000000001E-3},{"$f":"Q55","v":5000},35,null,0,0,null,{"$f":"W55","v":7.0000000000000001E-3},{"$f":"X55","v":5000},35,null,0,0,null,{"$f":"AD55","v":7.0000000000000001E-3},{"$f":"AE55","v":5000},35,null,0,0]
["TOU - Off Peak",null,"per kWh",null,8.3000000000000004E-2,{"$f":"0.64*$E$18","v":3200},265.60000000000002,null,{"$f":"E56","v":8.3000000000000004E-2},{"$f":"F56","v":3200},265.60000000000002,null,0,0,null,{"$f":"I56","v":8.3000000000000004E-2},{"$f":"J56","v":3200},265.60000000000002,null,0,0,null,{"$f":"P56","v":8.3000000000000004E-2},{"$f":"Q56","v":3200},265.60000000000002,null,0,0,null,{"$f":"W56","v":8.3000000000000004E-2},{"$f":"X56","v":3200},265.60000000000002,null,0,0,null,{"$f":"AD56","v":8.3000000000000004E-2},{"$f":"AE56","v":3200},265.60000000000002,null,0,0]
["TOU - Mid Peak",null,"per kWh",null,0.128,{"$f":"0.18*$E$18","v":900},115.2,null,{"$f":"E57","v":0.128},{"$f":"F57","v":900},115.2,null,0,0,null,{"$f":"I57","v":0.128},900,115.2,null,0,0,null,{"$f":"P57","v":0.128},900,115.2,null,0,0,null,{"$f":"W57","v":0.128},900,115.2,null,0,0,null,{"$f":"AD57","v":0.128},900,115.2,null,0,0]
["TOU - On Peak",null,"per kWh",null,0.17499999999999999,{"$f":"0.18*$E$18","v":900},157.5,null,0.17499999999999999,{"$f":"F58","v":900},157.5,null,0,0,null,0.17499999999999999,900,157.5,null,0,0,null,0.17499999999999999,900,157.5,null,0,0,null,0.17499999999999999,900,157.5,null,0,0,null,0.17499999999999999,900,157.5,null,0,0]
["Energy - RPP - Tier 1",null,"per kWh",null,9.9000000000000005E-2,{"$f":"IF(AND($S$1=1, E18>=600), 600, IF(AND($S$1=1, AND(E18<600, E18>=0)), E18, IF(AND($S$1=2, E18>=1000), 1000, IF(AND($S$1=2, AND(E18<1000, E18>=0)), E18))))","v":600},{"$f":"F59*E59","v":59.400000000000006},null,9.9000000000000005E-2,{"$f":"F59","v":600},{"$f":"J59*I59","v":59.400000000000006},null,0,0,null,9.9000000000000005E-2,600,{"$f":"Q59*P59","v":59.400000000000006},null,0,0,null,9.9000000000000005E-2,600,{"$f":"X59*W59","v":59.400000000000006},null,0,0,null,9.9000000000000005E-2,600,{"$f":"AE59*AD59","v":59.400000000000006},null,0,0,null,9.9000000000000005E-2,600,{"$f":"AL59*AK59","v":59.400000000000006},null,0,0]
["Energy - RPP - Tier 2",null,"per kWh",null,0.11600000000000001,{"$f":"IF(AND($S$1=1, E18>=600), E18-600, IF(AND($S$1=1, AND(E18<600, E18>=0)), 0, IF(AND($S$1=2, E18>=1000), E18-1000, IF(AND($S$1=2, AND(E18<1000, E18>=0)), 0))))","v":4400},{"$f":"F60*E60","v":510.40000000000003},null,0.11600000000000001,{"$f":"F60","v":4400},{"$f":"J60*I60","v":510.40000000000003},null,0,0,null,0.11600000000000001,4400,{"$f":"Q60*P60","v":510.40000000000003},null,0,0,null,0.11600000000000001,4400,{"$f":"X60*W60","v":510.40000000000003},null,0,0,null,0.11600000000000001,4400,{"$f":"AE60*AD60","v":510.40000000000003},null,0,0,null,0.11600000000000001,4400,{"$f":"AL60*AK60","v":510.40000000000003},null,0,0]
[null,null,null,null,null,null,null,null,null,null,null,null,null,null,null,null,null,null,null,null,"",null,null,null,null,null,null,"",null,null,null,null,null,null,"",null,null,null,null,null,null,""]
["Total Bill on TOU (before Taxes)",null,null,null,null,null,{"$f":"SUM(G52:G58,G51)","v":762.1611200000001},null,null,null,{"$f":"SUM(K52:K58,K51)","v":754.45533999999986},null,{"$f":"K62-G62","v":-7.7057800000002317},{"$f":"IF((G62)=0,\"\",(M62/G62))","v":-1.0110434392140379E-2},null,null,null,{"$f":"SUM(R52:R58,R51)","v":779.94533999999987},null,{"$f":"R62-K62","v":25.490000000000009},3.3785962731737063E-2,null,null,null,{"$f":"SUM(Y52:Y58,Y51)","v":782.2953399999999},null,{"$f":"Y62-R62","v":2.3500000000000227},3.0130316568081849E-3,null,null,null,{"$f":"SUM(AF52:AF58,AF51)","v":784.78533999999991},null,{"$f":"AF62-Y62","v":2.4900000000000091},3.182941112751623E-3,null,null,null,{"$f":"SUM(AM52:AM58,AM51)","v":787.46533999999986},null,{"$f":"AM62-AF62","v":2.67999999999995},3.4149465636041957E-3]
["HST",null,null,null,0.13,null,{"$f":"G62*E63","v":99.080945600000021},null,0.13,null,{"$f":"K62*I63","v":98.079194199999989},null,-1.0017514000000318,-1.0110434392140396E-2,null,0.13,null,{"$f":"R62*P63","v":101.39289419999999},null,{"$f":"R63-K63","v":3.3136999999999972},3.3785962731737021E-2,null,0.13,null,{"$f":"Y62*W63","v":101.6983942},null,{"$f":"Y63-R63","v":0.30550000000000921},3.0130316568082465E-3,null,0.13,null,{"$f":"AF62*AD63","v":102.0220942},null,{"$f":"AF63-Y63","v":0.32370000000000232},3.1829411127516343E-3,null,0.13,null,{"$f":"AM62*AK63","v":102.37049419999998},null,{"$f":"AM63-AF63","v":0.34839999999998383},3.4149465636041008E-3]
["Total Bill (including HST)",null,null,null,null,null,{"$f":"G62+G63","v":861.24206560000016},null,null,null,{"$f":"K62+K63","v":852.53453419999983},null,-8.7075314000003345,-1.0110434392140464E-2,null,null,null,{"$f":"R62+R63","v":881.33823419999987},null,28.803700000000049,3.3785962731737111E-2,null,null,null,{"$f":"Y62+Y63","v":883.99373419999984},null,2.6554999999999609,3.0130316568081112E-3,null,null,null,{"$f":"AF62+AF63","v":886.80743419999988},null,2.8137000000000398,3.1829411127516569E-3,null,null,null,{"$f":"AM62+AM63","v":889.83583419999979},null,3.0283999999999196,3.4149465636041688E-3]
["Ontario Clean Energy Benefit 1",null,null,null,null,null,{"$f":"ROUND(-G64*10%,2)","v":-86.12},null,null,null,null,null,86.12,-1,null,null,null,null,null,0,"",null,null,null,null,null,0,"",null,null,null,null,null,0,"",null,null,null,null,null,0,""]
["Total Bill on TOU (including OCEB)",null,null,null,null,null,{"$f":"G64+G65","v":775.12206560000016},null,null,null,{"$f":"K64+K65","v":852.53453419999983},null,77.41246859999967,9.9871326124714124E-2,null,null,null,{"$f":"R64+R65","v":881.33823419999987},null,28.803700000000049,3.3785962731737111E-2,null,null,null,{"$f":"Y64+Y65","v":883.99373419999984},null,2.6554999999999609,3.0130316568081112E-3,null,null,null,{"$f":"AF64+AF65","v":886.80743419999988},null,2.8137000000000398,3.1829411127516569E-3,null,null,null,{"$f":"AM64+AM65","v":889.83583419999979},null,3.0283999999999196,3.4149465636041688E-3]
[null,null,null,null,null,null,null,null,null,null,null,null,null,null,null,null,null,null,null,null,"",null,null,null,null,null,null,"",null,null,null,null,null,null,"",null,null,null,null,null,null,""]
["Total Bill on RPP (before Taxes)",null,null,null,null,null,{"$f":"SUM(G60:G61,G51,G52:G55)","v":734.26112000000001},null,null,null,{"$f":"SUM(K60:K61,K51,K52:K55)","v":726.55533999999989},null,{"$f":"K68-G68","v":-7.705780000000118},{"$f":"IF((G68)=0,\"\",(M68/G68))","v":-1.0494604426283824E-2},null,null,null,{"$f":"SUM(R60:R61,R51,R52:R55)","v":752.0453399999999},null,{"$f":"R68-K68","v":25.490000000000009},3.5083356485962947E-2,null,null,null,{"$f":"SUM(Y60:Y61,Y51,Y52:Y55)","v":754.39533999999992},null,{"$f":"Y68-R68","v":2.3500000000000227},3.1248115971305975E-3,null,null,null,{"$f":"SUM(AF60:AF61,AF51,AF52:AF55)","v":756.88533999999993},null,{"$f":"AF68-Y68","v":2.4900000000000091},3.300656655699927E-3,null,null,null,{"$f":"SUM(AM60:AM61,AM51,AM52:AM55)","v":759.56533999999988},null,{"$f":"AM68-AF68","v":2.67999999999995},3.5408269368778504E-3]
["HST",null,null,null,0.13,null,{"$f":"G68*E69","v":95.453945599999997},null,0.13,null,{"$f":"K68*I69","v":94.452194199999994},null,-1.0017514000000034,{"$f":"IF((G69)=0,\"\",(M69/G69))","v":-1.0494604426283699E-2},null,0.13,null,{"$f":"R68*P69","v":97.765894199999991},null,{"$f":"R69-K69","v":3.3136999999999972},3.5083356485962898E-2,null,0.13,null,{"$f":"Y68*W69","v":98.071394199999986},null,{"$f":"Y69-R69","v":0.305499999999995},3.1248115971305159E-3,null,0.13,null,{"$f":"AF68*AD69","v":98.395094199999988},null,{"$f":"AF69-Y69","v":0.32370000000000232},3.3006566556999387E-3,null,0.13,null,{"$f":"AM68*AK69","v":98.743494199999986},null,{"$f":"AM69-AF69","v":0.34839999999999804},3.5408269368778964E-3]
["Total Bill (including HST)",null,null,null,null,null,{"$f":"G68+G69","v":829.7150656},null,null,null,{"$f":"K68+K69","v":821.0075341999999},null,-8.7075314000001072,-1.0494604426283792E-2,null,null,null,{"$f":"R68+R69","v":849.81123419999994},null,28.803700000000049,3.5083356485962988E-2,null,null,null,{"$f":"Y68+Y69","v":852.46673419999991},null,2.6554999999999609,3.1248115971305207E-3,null,null,null,{"$f":"AF68+AF69","v":855.28043419999995},null,2.8137000000000398,3.3006566556999617E-3,null,null,null,{"$f":"AM68+AM69","v":858.30883419999986},null,3.0283999999999196,3.5408269368778222E-3]
["Ontario Clean Energy Benefit 1",null,null,null,null,null,{"$f":"ROUND(-G70*10%,2)","v":-82.97},null,null,null,null,null,82.97,-1,null,null,null,null,null,0,"",null,null,null,null,null,0,"",null,null,null,null,null,0,"",null,null,null,null,null,0,""]
["Total Bill on RPP (including OCEB)",null,null,null,null,null,{"$f":"SUM(G70:G71)","v":746.74506559999998},null,null,null,{"$f":"SUM(K70:K71)","v":821.0075341999999},null,74.26246859999992,9.9448221382395063E-2,null,null,null,{"$f":"SUM(R70:R71)","v":849.81123419999994},null,28.803700000000049,3.5083356485962988E-2,null,null,null,{"$f":"SUM(Y70:Y71)","v":852.46673419999991},null,2.6554999999999609,3.1248115971305207E-3,null,null,null,{"$f":"SUM(AF70:AF71)","v":855.28043419999995},null,2.8137000000000398,3.3006566556999617E-3,null,null,null,{"$f":"SUM(AM70:AM71)","v":858.30883419999986},null,3.0283999999999196,3.5408269368778222E-3]
[]
[]
["Loss Factor (%)",null,null,null,3.44E-2,null,null,null,3.9300000000000002E-2,null,null,null,null,null,null,3.9300000000000002E-2,null,null,null,null,null,null,3.9300000000000002E-2,null,null,null,null,null,null,3.9300000000000002E-2,null,null,null,null,null,null,3.9300000000000002E-2]
[]
["Distribution Excluding Rate Riders",null,null,null,"2015 Current Board-Approved",null,null,null,"2016 Test Year 1\nProposed",null,null,null,"Impact\n2016 TEST vs. \n2015 Bridge",null,null,"2017 Test Year 2\nProposed",null,null,null,"Impact\n2017 TEST 2 vs. \n2016 Test 1",null,null,"2018 Test Year 3\nProposed",null,null,null,"Impact\n2018 TEST 3 vs. \n2017 Test 2",null,null,"2019 Test Year 4\nProposed",null,null,null,"Impact\n2019 TEST 4 vs. \n2018 Test 3",null,null,"2020 Test Year 5 \nProposed",null,null,null,"Impact\n2020 TEST 5 vs. \n2019 Test 4"]
[null,null,"Charge Unit",null,"Rate","Volume","Charge",null,"Rate","Volume","Charge",null,"$ Change","% Change",null,"Rate","Volume","Charge",null,"$ Change","% Change",null,"Rate","Volume","Charge",null,"$ Change","% Change",null,"Rate","Volume","Charge",null,"$ Change","% Change",null,"Rate","Volume","Charge",null,"$ Change","% Change"]
[null,null,null,null,"($)",null,"($)",null,"($)",null,"($)",null,null,null,null,"($)",null,"($)",null,null,null,null,"($)",null,"($)",null,null,null,null,"($)",null,"($)",null,null,null,null,"($)",null,"($)"]
["Monthly Service Charge",null,"Monthly",null,25.85,1,{"$f":"F80*E80","v":25.85},null,{"$f":"'Rates Summary'!$E$29","v":14.27},1,{"$f":"J80*I80","v":14.27},null,{"$f":"K80-G80","v":-11.580000000000002},{"$f":"IF((G80)=0,\"\",(M80/G80))","v":-0.44796905222437144},null,{"$f":"'Rates Summary'!$F$29","v":14.59},1,{"$f":"Q80*P80","v":14.59},null,{"$f":"R80-K80","v":0.32000000000000028},{"$f":"IF((K80)=0,\"\",(T80/K80))","v":2.2424667133847252E-2},null,{"$f":"'Rates Summary'!$G$29","v":14.94},1,{"$f":"X80*W80","v":14.94},null,{"$f":"Y80-R80","v":0.34999999999999964},{"$f":"IF((R80)=0,\"\",(AA80/R80))","v":2.3989033584646994E-2},null,{"$f":"'Rates Summary'!$H$29","v":15.22},1,{"$f":"AE80*AD80","v":15.22},null,{"$f":"AF80-Y80","v":0.28000000000000114},{"$f":"IF((Y80)=0,\"\",(AH80/Y80))","v":1.8741633199464602E-2},null,{"$f":"'Rates Summary'!$I$29","v":15.4},1,{"$f":"AL80*AK80","v":15.4},null,{"$f":"AM80-AF80","v":0.17999999999999972},{"$f":"IF((AF80)=0,\"\",(AO80/AF80))","v":1.1826544021024949E-2}]
["Distribution Volumetric Rate",null,"per kWh",null,1.06E-2,{"$f":"$E$18","v":5000},{"$f":"F81*E81","v":53},null,{"$f":"'Rates Summary'!$E$41","v":1.46E-2},{"$f":"$E$18","v":5000},73,null,20,{"$f":"IF((G81)=0,\"\",(M81/G81))","v":0.37735849056603776},null,{"$f":"'Rates Summary'!$F$41","v":1.5100000000000001E-2},{"$f":"$E$18","v":5000},75.5,null,2.5,{"$f":"IF((K81)=0,\"\",(T81/K81))","v":3.4246575342465752E-2},null,{"$f":"'Rates Summary'!$G$41","v":1.55E-2},{"$f":"$E$18","v":5000},77.5,null,2,{"$f":"IF((R81)=0,\"\",(AA81/R81))","v":2.6490066225165563E-2},null,{"$f":"'Rates Summary'!$H$41","v":1.61E-2},{"$f":"$E$18","v":5000},80.5,null,3,{"$f":"IF((Y81)=0,\"\",(AH81/Y81))","v":3.870967741935484E-2},null,{"$f":"'Rates Summary'!$I$41","v":1.66E-2},{"$f":"$E$18","v":5000},83,null,2.5,{"$f":"IF((AF81)=0,\"\",(AO81/AF81))","v":3.1055900621118012E-2}]
["\"Regular\" Distribution Only",null,null,null,null,null,{"$f":"SUM(G79:G81)","v":78.849999999999994},null,null,null,{"$f":"SUM(K79:K81)","v":87.27},null,8.4200000000000017,0.10678503487634752,null,null,null,{"$f":"SUM(R79:R81)","v":90.09},null,2.8200000000000074,3.2313509797181249E-2,null,null,null,{"$f":"SUM(Y79:Y81)","v":92.44},null,2.3499999999999943,2.6085026085026022E-2,null,null,null,{"$f":"SUM(AF79:AF81)","v":95.72},null,3.2800000000000011,3.5482475118996118E-2,null,null,null,{"$f":"SUM(AM79:AM81)","v":98.4},null,2.6800000000000068,2.799832845800258E-2]
[]
[]
[null,"Residential (kWh) - 100, 250, 500, 800, 1000, 1500, 2000"]
[null,"GS<50kW (kWh) - 1000, 2000, 5000, 10000, 15000"]
[null,"GS>50kW (kW) - 60, 100, 500, 1000"]
[null,"Large User - range appropriate for utility"]
[null,"Lighting Classes and USL - 150 kWh and 1 kW, range appropriate for utility."]
[]
[null,null,"Note that cells with the highlighted color shown to the left indicate quantities that are loss adjusted."]

{"sheet":"Bill Impact GS < 50 10000kWh","index":13,"n_rows":91,"n_cols":42,"rows_kept":91,"cut":false,"hidden":false,"merged":[[19,33,19,34],[19,36,19,38],[20,20,21,20],[20,26,21,26],[19,40,19,41],[19,22,19,24],[19,26,19,27],[19,29,19,31],[20,27,21,27],[20,33,21,33],[20,34,21,34],[20,40,21,40],[20,41,21,41],[2,0,2,9],[9,0,9,13],[10,0,10,13],[13,2,13,13],[13,15,13,26],[19,4,19,6],[19,8,19,10],[19,12,19,13],[19,15,19,17],[19,19,19,20],[64,0,64,2],[20,2,21,2],[20,12,21,12],[20,13,21,13],[20,19,21,19],[76,29,76,31],[76,33,76,34],[77,34,78,34],[65,0,65,2],[70,0,70,2],[71,0,71,2],[76,4,76,6],[76,8,76,10],[76,12,76,13],[77,40,78,40],[77,41,78,41],[76,36,76,38],[76,40,76,41],[77,2,78,2],[77,12,78,12],[77,13,78,13],[77,19,78,19],[77,20,78,20],[77,26,78,26],[77,27,78,27],[77,33,78,33],[76,15,76,17],[76,19,76,20],[76,22,76,24],[76,26,76,27]]}
[null,null,null,null,null,null,null,null,null,null,null,null,"File Number:",{"$f":"EBNUMBER","v":"EB-2015-0083"},null,null,null,null,1]
[null,null,null,null,null,null,null,null,null,null,null,null,"Exhibit:",{"$f":"'Bill Impact Resi 204kWh'!$N$2","v":8}]
[null,null,null,null,null,null,null,null,null,null,null,null,"Tab:",{"$f":"'Bill Impact Resi 204kWh'!$N$3","v":4}]
[null,null,null,null,null,null,null,null,null,null,null,null,"Schedule:",{"$f":"'Bill Impact Resi 204kWh'!$N$4","v":3}]
[null,null,null,null,null,null,null,null,null,null,null,null,"Page:"]
[]
[null,null,null,null,null,null,null,null,null,null,null,null,"Date:",{"$f":"'Bill Impact Resi 204kWh'!$N$7","v":"Settlement"}]
[]
[]
["Appendix 2-W"]
["Bill Impacts"]
[]
[]
["Customer Class:",null,"General Service Less Than 50 kW",null,null,null,null,null,null,null,null,null,null,null,null,{"$f":"C14","v":"General Service Less Than 50 kW"},null,null,null,null,null,null,null,null,null,null,null,null,null,null,null,null,null,null,null,null,{"$f":"P14","v":"General Service Less Than 50 kW"}]
[]
["TOU / non-TOU:",null,"TOU"]
[]
[null,null,"Consumption",null,10000," kWh"]
[]
[null,null,null,null,"2015 Current Board-Approved",null,null,null,"2016 Test Year 1\nProposed",null,null,null,"Impact\n2016 TEST vs. \n2015 Bridge",null,null,"2017 Test Year 2\nProposed",null,null,null,"Impact\n2017 TEST 2 vs. \n2016 Test 1",null,null,"2018 Test Year 3\nProposed",null,null,null,"Impact\n2018 TEST 3 vs. \n2017 Test 2",null,null,"2019 Test Year 4\nProposed",null,null,null,"Impact\n2019 TEST 4 vs. \n2018 Test 3",null,null,"2020 Test Year 5 \nProposed",null,null,null,"Impact\n2019 TEST 5 vs. \n2019 Test 4"]
[null,null,"Charge Unit",null,"Rate","Volume","Charge",null,"Rate","Volume","Charge",null,"$ Change","% Change",null,"Rate","Volume","Charge",null,"$ Change","% Change",null,"Rate","Volume","Charge",null,"$ Change","% Change",null,"Rate","Volume","Charge",null,"$ Change","% Change",null,"Rate","Volume","Charge",null,"$ Change","% Change"]
[null,null,null,null,"($)",null,"($)",null,"($)",null,"($)",null,null,null,null,"($)",null,"($)",null,null,null,null,"($)",null,"($)",null,null,null,null,"($)",null,"($)",null,null,null,null,"($)",null,"($)"]
["Monthly Service Charge",null,"Monthly",null,25.85,1,{"$f":"F23*E23","v":25.85},null,{"$f":"'Rates Summary'!$E$29","v":14.27},1,{"$f":"J23*I23","v":14.27},null,{"$f":"K23-G23","v":-11.580000000000002},{"$f":"IF((G23)=0,\"\",(M23/G23))","v":-0.44796905222437144},null,{"$f":"'Rates Summary'!$F$29","v":14.59},1,{"$f":"Q23*P23","v":14.59},null,{"$f":"R23-K23","v":0.32000000000000028},{"$f":"IF((K23)=0,\"\",(T23/K23))","v":2.2424667133847252E-2},null,{"$f":"'Rates Summary'!$G$29","v":14.94},1,{"$f":"X23*W23","v":14.94},null,{"$f":"Y23-R23","v":0.34999999999999964},{"$f":"IF((R23)=0,\"\",(AA23/R23))","v":2.3989033584646994E-2},null,{"$f":"'Rates Summary'!$H$29","v":15.22},1,{"$f":"AE23*AD23","v":15.22},null,{"$f":"AF23-Y23","v":0.28000000000000114},{"$f":"IF((Y23)=0,\"\",(AH23/Y23))","v":1.8741633199464602E-2},null,{"$f":"'Rates Summary'!$I$29","v":15.4},1,{"$f":"AL23*AK23","v":15.4},null,{"$f":"AM23-AF23","v":0.17999999999999972},{"$f":"IF((AF23)=0,\"\",(AO23/AF23))","v":1.1826544021024949E-2}]
["Smart Meter (SMIRR) Rate Rider",null,"Monthly",null,3.65,1,{"$f":"F24*E24","v":3.65},null,0,1,0,null,-3.65,{"$f":"IF((G24)=0,\"\",(M24/G24))","v":-1},null,0,1,0,null,0,{"$f":"IF((K24)=0,\"\",(T24/K24))","v":""},null,0,1,0,null,0,{"$f":"IF((R24)=0,\"\",(AA24/R24))","v":""},null,0,1,0,null,0,{"$f":"IF((Y24)=0,\"\",(AH24/Y24))","v":""},null,0,1,0,null,0,{"$f":"IF((AF24)=0,\"\",(AO24/AF24))","v":""}]
["Rate Rider Smart Meters Capital (2016)",null,"Monthly",null,0,1,0,null,{"$f":"'Rates Summary'!D10","v":0.43},1,0.43,null,0.43,1,null,0,1,0,null,-0.43,-1,null,0,1,0,null,0,"",null,0,1,0,null,0,"",null,0,1,0,null,0,""]
["Rate Rider Recovery of Stranded Meters (2016)",null,"Monthly",null,0,1,0,null,{"$f":"'Rates Summary'!$D$11","v":6.4},1,6.4,null,6.4,1,null,0,1,0,null,-6.4,-1,null,0,1,0,null,0,"",null,0,1,0,null,0,"",null,0,1,0,null,0,""]
[null,null,null,null,null,1,0,null,0,1,0,null,0,{"$f":"IF((G27)=0,\"\",(M27/G27))","v":""},null,0,1,0,null,0,"",null,0,1,0,null,0,"",null,0,1,0,null,0,"",null,0,1,0,null,0,""]
[null,null,null,null,null,1,0,null,0,1,0,null,0,{"$f":"IF((G28)=0,\"\",(M28/G28))","v":""},null,0,1,0,null,0,"",null,0,1,0,null,0,"",null,0,1,0,null,0,"",null,0,1,0,null,0,""]
["Distribution Volumetric Rate",null,"per kWh",null,1.06E-2,{"$f":"$E$18","v":10000},106,null,{"$f":"'Rates Summary'!$E$41","v":1.46E-2},{"$f":"$E$18","v":10000},146,null,40,{"$f":"IF((G29)=0,\"\",(M29/G29))","v":0.37735849056603776},null,{"$f":"'Rates Summary'!$F$41","v":1.5100000000000001E-2},{"$f":"$E$18","v":10000},151,null,5,3.4246575342465752E-2,null,{"$f":"'Rates Summary'!$G$41","v":1.55E-2},{"$f":"$E$18","v":10000},155,null,4,2.6490066225165563E-2,null,{"$f":"'Rates Summary'!$H$41","v":1.61E-2},{"$f":"$E$18","v":10000},161,null,6,3.870967741935484E-2,null,{"$f":"'Rates Summary'!$I$41","v":1.66E-2},{"$f":"$E$18","v":10000},166,null,5,3.1055900621118012E-2]
["Rate Rider Tax Change (2015)",null,"per kWh",null,-1E-4,{"$f":"$E$18","v":10000},-1,null,0,{"$f":"$E$18","v":10000},0,null,1,{"$f":"IF((G30)=0,\"\",(M30/G30))","v":-1},null,0,{"$f":"$E$18","v":10000},0,null,0,"",null,0,{"$f":"$E$18","v":10000},0,null,0,"",null,0,{"$f":"$E$18","v":10000},0,null,0,"",null,0,{"$f":"$E$18","v":10000},0,null,0,""]
["LRAM VA (2016)",null,"per kWh",null,0,{"$f":"$E$18","v":10000},0,null,{"$f":"'Rates Summary'!D7","v":8.0000000000000004E-4},10000,8,null,8,1,null,0,10000,0,null,-8,{"$f":"IF((K31)=0,\"\",(T31/K31))","v":-1},null,0,10000,0,null,0,"",null,0,10000,0,null,0,"",null,0,10000,0,null,0,""]
["Rate Rider Incremental Capital 2012 True-Up (2016)",null,"per kWh",null,0,{"$f":"$E$18","v":10000},0,null,{"$f":"'Rates Summary'!D9","v":2.0000000000000001E-4},10000,2,null,2,1,null,0,10000,0,null,-2,{"$f":"IF((K32)=0,\"\",(T32/K32))","v":-1},null,0,10000,0,null,0,"",null,0,10000,0,null,0,"",null,0,10000,0,null,0,""]
[null,null,"per kWh",null,null,10000,0,null,null,10000,0,null,0,{"$f":"IF((G33)=0,\"\",(M33/G33))","v":""},null,null,10000,0,null,0,"",null,null,10000,0,null,0,"",null,null,10000,0,null,0,"",null,null,10000,0,null,0,""]
[null,null,"per kWh",null,null,10000,0,null,null,10000,0,null,0,"",null,null,10000,0,null,0,"",null,null,10000,0,null,0,"",null,null,10000,0,null,0,"",null,null,10000,0,null,0,""]
[null,null,null,null,null,10000,0,null,null,10000,0,null,0,"",null,null,10000,0,null,0,"",null,null,10000,0,null,0,"",null,null,10000,0,null,0,"",null,null,10000,0,null,0,""]
[null,null,null,null,null,10000,0,null,null,10000,0,null,0,"",null,null,10000,0,null,0,"",null,null,10000,0,null,0,"",null,null,10000,0,null,0,"",null,null,10000,0,null,0,""]
[null,null,null,null,null,10000,0,null,null,10000,0,null,0,"",null,null,10000,0,null,0,"",null,null,10000,0,null,0,"",null,null,10000,0,null,0,"",null,null,10000,0,null,0,""]
[null,null,null,null,null,10000,0,null,null,10000,0,null,0,"",null,null,10000,0,null,0,"",null,null,10000,0,null,0,"",null,null,10000,0,null,0,"",null,null,10000,0,null,0,""]
["Sub-Total A (excluding pass through)",null,null,null,null,null,{"$f":"SUM(G23:G38)","v":134.5},null,null,null,{"$f":"SUM(K23:K38)","v":177.1},null,42.599999999999994,0.31672862453531592,null,null,null,{"$f":"SUM(R23:R38)","v":165.59},null,-11.509999999999991,-6.4991530208921469E-2,null,null,null,{"$f":"SUM(Y23:Y38)","v":169.94},null,4.3499999999999943,2.6269702276707496E-2,null,null,null,{"$f":"SUM(AF23:AF38)","v":176.22},null,6.2800000000000011,{"$f":"IF((Y39)=0,\"\",(AH39/Y39))","v":3.6954219136165714E-2},null,null,null,{"$f":"SUM(AM23:AM38)","v":181.4},null,5.1800000000000068,2.9395074338894604E-2]
["Deferral/Variance Account Disposition Rate Rider (2016)",null,"per kWh",null,0,{"$f":"$E$18","v":10000},{"$f":"F40*E40","v":0},null,{"$f":"'Rates Summary'!D5","v":-6.9999999999999999E-4},{"$f":"$E$18","v":10000},{"$f":"J40*I40","v":-7},null,{"$f":"K40-G40","v":-7},1,null,0,{"$f":"$E$18","v":10000},{"$f":"Q40*P40","v":0},null,7,-1,null,0,{"$f":"$E$18","v":10000},{"$f":"X40*W40","v":0},null,0,"",null,0,{"$f":"$E$18","v":10000},{"$f":"AE40*AD40","v":0},null,0,{"$f":"IF((Y40)=0,\"\",(AH40/Y40))","v":""},null,0,{"$f":"$E$18","v":10000},{"$f":"AL40*AK40","v":0},null,0,""]
[null,null,null,null,null,{"$f":"$E$18","v":10000},{"$f":"F41*E41","v":0},null,{"$f":"E41","v":0},{"$f":"$E$18","v":10000},{"$f":"J41*I41","v":0},null,{"$f":"K41-G41","v":0},{"$f":"IF((G41)=0,\"\",(M41/G41))","v":""},null,null,{"$f":"$E$18","v":10000},{"$f":"Q41*P41","v":0},null,0,"",null,null,{"$f":"$E$18","v":10000},{"$f":"X41*W41","v":0},null,0,"",null,null,{"$f":"$E$18","v":10000},{"$f":"AE41*AD41","v":0},null,0,"",null,null,{"$f":"$E$18","v":10000},{"$f":"AL41*AK41","v":0},null,0,""]
["Rate Rider CGAAP Account 1576 (2016)",null,"per kWh",null,0,10000,0,null,{"$f":"'Rates Summary'!$D$8","v":-6.1999999999999998E-3},10000,-62,null,-62,1,null,0,10000,0,null,62,-1,null,0,10000,0,null,0,"",null,0,10000,0,null,0,"",null,0,10000,0,null,0,""]
["Disposition of Global Adjustment (2015)  \nApplicable to Non-RPP Customers",null,"per kWh",null,1.5599999999999999E-2,0,0,null,0,10000,0,null,0,"",null,0,10000,0,null,0,"",null,0,10000,0,null,0,"",null,0,10000,0,null,0,"",null,0,10000,0,null,0,""]
["Disposition of Global Adjustment (2016) \nApplicable to Non-RPP Customers",null,"per kWh",null,0,10000,0,null,{"$f":"'Rates Summary'!D6","v":2.0500000000000001E-2},0,0,null,0,"",null,0,10000,0,null,0,"",null,0,10000,0,null,0,"",null,0,10000,0,null,0,"",null,0,10000,0,null,0,""]
["Low Voltage Service Charge",null,"per kWh",null,5.9999999999999995E-4,10000,{"$f":"F45*E45","v":5.9999999999999991},null,{"$f":"'Rates Summary'!D15","v":1.1000000000000001E-3},10000,{"$f":"J45*I45","v":11},null,{"$f":"K45-G45","v":5.0000000000000009},{"$f":"IF((G45)=0,\"\",(M45/G45))","v":0.83333333333333359},null,{"$f":"I45","v":1.1000000000000001E-3},10000,{"$f":"Q45*P45","v":11},null,{"$f":"R45-K45","v":0},0,null,{"$f":"P45","v":1.1000000000000001E-3},10000,{"$f":"X45*W45","v":11},null,{"$f":"Y45-R45","v":0},0,null,{"$f":"W45","v":1.1000000000000001E-3},10000,{"$f":"AE45*AD45","v":11},null,{"$f":"AF45-Y45","v":0},0,null,{"$f":"AD45","v":1.1000000000000001E-3},10000,{"$f":"AL45*AK45","v":11},null,{"$f":"AM45-AF45","v":0},0]
["Line Losses on Cost of Power",null,"per kWh",null,{"$f":"IF(ISBLANK(C16)=TRUE, 0, IF(C16=\"TOU\", 0.64*$E$56+0.18*$E$57+0.18*$E$58, IF(AND(C16=\"non-TOU\", F60>0), E60,E59)))","v":0.10766000000000001},{"$f":"$E$18*(1+$E$75)-$E$18","v":344},37.035040000000002,null,{"$f":"0.64*$E$56+0.18*$E$57+0.18*$E$58","v":0.10766000000000001},{"$f":"$E$18*(1+$I$75)-$E$18","v":392.99999999999818},42.310379999999803,null,5.275339999999801,0.1424418604651109,null,{"$f":"0.64*$E$56+0.18*$E$57+0.18*$E$58","v":0.10766000000000001},{"$f":"$E$18*(1+$I$75)-$E$18","v":392.99999999999818},{"$f":"Q46*P46","v":42.310379999999803},null,{"$f":"R46-K46","v":0},0,null,{"$f":"0.64*$E$56+0.18*$E$57+0.18*$E$58","v":0.10766000000000001},{"$f":"$E$18*(1+$I$75)-$E$18","v":392.99999999999818},{"$f":"X46*W46","v":42.310379999999803},null,{"$f":"Y46-R46","v":0},0,null,{"$f":"0.64*$E$56+0.18*$E$57+0.18*$E$58","v":0.10766000000000001},{"$f":"$E$18*(1+$I$75)-$E$18","v":392.99999999999818},{"$f":"AE46*AD46","v":42.310379999999803},null,{"$f":"AF46-Y46","v":0},0,null,{"$f":"0.64*$E$56+0.18*$E$57+0.18*$E$58","v":0.10766000000000001},{"$f":"$E$18*(1+$I$75)-$E$18","v":392.99999999999818},{"$f":"AL46*AK46","v":42.310379999999803},null,{"$f":"AM46-AF46","v":0},0]
["Smart Meter Entity Charge",null,"Monthly",null,0.79,1,{"$f":"F47*E47","v":0.79},null,0.79,1,{"$f":"J47*I47","v":0.79},null,{"$f":"K47-G47","v":0},null,null,0.79,1,{"$f":"Q47*P47","v":0.79},null,{"$f":"R47-K47","v":0},0,null,0.79,1,{"$f":"X47*W47","v":0.79},null,{"$f":"Y47-R47","v":0},0,null,0,1,{"$f":"AE47*AD47","v":0},null,{"$f":"AF47-Y47","v":-0.79},-1,null,0,1,{"$f":"AL47*AK47","v":0},null,{"$f":"AM47-AF47","v":0},""]
["Sub-Total B - Distribution (includes Sub-Total A)",null,null,null,null,null,{"$f":"SUM(G40:G47)+G39","v":178.32504},null,null,null,{"$f":"SUM(K40:K47)+K39","v":162.2003799999998},null,{"$f":"K48-G48","v":-16.124660000000205},{"$f":"IF((G48)=0,\"\",(M48/G48))","v":-9.0422859291102387E-2},null,null,null,{"$f":"SUM(R40:R47)+R39","v":219.69037999999981},null,{"$f":"R48-K48","v":57.490000000000009},0.3544381338687374,null,null,null,{"$f":"SUM(Y40:Y47)+Y39","v":224.0403799999998},null,{"$f":"Y48-R48","v":4.3499999999999943},1.9800593908572594E-2,null,null,null,{"$f":"SUM(AF40:AF47)+AF39","v":229.53037999999981},null,{"$f":"AF48-Y48","v":5.4900000000000091},2.4504511195705053E-2,null,null,null,{"$f":"SUM(AM40:AM47)+AM39","v":234.71037999999982},null,{"$f":"AM48-AF48","v":5.1800000000000068},2.2567818691364563E-2]
["RTSR - Network",null,"per kWh",null,6.0000000000000001E-3,{"$f":"$E$18*(1+$E$75)","v":10344},{"$f":"F49*E49","v":62.064},null,{"$f":"'Rates Summary'!D17","v":6.3E-3},{"$f":"$E$18*(1+$I$75)","v":10392.999999999998},{"$f":"J49*I49","v":65.475899999999996},null,{"$f":"K49-G49","v":3.4118999999999957},5.4973897911832881E-2,null,{"$f":"I49","v":6.3E-3},{"$f":"$E$18*(1+P75)","v":10392.999999999998},{"$f":"Q49*P49","v":65.475899999999996},null,0,0,null,{"$f":"P49","v":6.3E-3},{"$f":"$E$18*(1+W75)","v":10392.999999999998},{"$f":"X49*W49","v":65.475899999999996},null,0,0,null,{"$f":"W49","v":6.3E-3},{"$f":"$E$18*(1+AD75)","v":10392.999999999998},{"$f":"AE49*AD49","v":65.475899999999996},null,0,0,null,{"$f":"AD49","v":6.3E-3},{"$f":"$E$18*(1+AK75)","v":10392.999999999998},{"$f":"AL49*AK49","v":65.475899999999996},null,0,0]
["RTSR - Line and Transformation Connection",null,"per kWh",null,4.5999999999999999E-3,{"$f":"F49","v":10344},{"$f":"F50*E50","v":47.5824},null,{"$f":"'Rates Summary'!D18","v":5.1000000000000004E-3},{"$f":"J49","v":10392.999999999998},{"$f":"J50*I50","v":53.004299999999994},null,5.4218999999999937,0.1139475940683949,null,{"$f":"I50","v":5.1000000000000004E-3},{"$f":"Q49","v":10392.999999999998},{"$f":"Q50*P50","v":53.004299999999994},null,0,0,null,{"$f":"P50","v":5.1000000000000004E-3},{"$f":"X49","v":10392.999999999998},{"$f":"X50*W50","v":53.004299999999994},null,0,0,null,{"$f":"W50","v":5.1000000000000004E-3},{"$f":"AE49","v":10392.999999999998},{"$f":"AE50*AD50","v":53.004299999999994},null,0,0,null,{"$f":"AD50","v":5.1000000000000004E-3},{"$f":"AL49","v":10392.999999999998},{"$f":"AL50*AK50","v":53.004299999999994},null,0,0]
["Sub-Total C - Delivery (including Sub-Total B)",null,null,null,null,null,{"$f":"SUM(G48:G50)","v":287.97143999999997},null,null,null,{"$f":"SUM(K48:K50)","v":280.68057999999979},null,-7.2908600000001798,-2.5317996812462308E-2,null,null,null,{"$f":"SUM(R48:R50)","v":338.1705799999998},null,57.490000000000009,0.20482357561039688,null,null,null,{"$f":"SUM(Y48:Y50)","v":342.52057999999982},null,4.3500000000000227,1.2863330689500031E-2,null,null,null,{"$f":"SUM(AF48:AF50)","v":348.01057999999983},null,5.4900000000000091,1.6028233982320162E-2,null,null,null,{"$f":"SUM(AM48:AM50)","v":353.19057999999978},null,5.17999999999995,1.4884604945056419E-2]
["Wholesale Market Service Charge (WMSC)",null,"per kWh",null,4.4000000000000003E-3,{"$f":"F50","v":10344},{"$f":"F52*E52","v":45.513600000000004},null,{"$f":"E52","v":4.4000000000000003E-3},{"$f":"J50","v":10392.999999999998},{"$f":"J52*I52","v":45.729199999999992},null,0.2155999999999878,4.7370456303168235E-3,null,{"$f":"I52","v":4.4000000000000003E-3},{"$f":"Q50","v":10392.999999999998},{"$f":"Q52*P52","v":45.729199999999992},null,0,0,null,{"$f":"P52","v":4.4000000000000003E-3},{"$f":"X50","v":10392.999999999998},{"$f":"X52*W52","v":45.729199999999992},null,0,0,null,{"$f":"W52","v":4.4000000000000003E-3},{"$f":"AE50","v":10392.999999999998},{"$f":"AE52*AD52","v":45.729199999999992},null,0,0,null,{"$f":"AD52","v":4.4000000000000003E-3},{"$f":"AL50","v":10392.999999999998},{"$f":"AL52*AK52","v":45.729199999999992},null,0,0]
["Rural and Remote Rate Protection (RRRP)",null,"per kWh",null,1.2999999999999999E-3,{"$f":"F50","v":10344},13.447199999999999,null,{"$f":"E53","v":1.2999999999999999E-3},{"$f":"J50","v":10392.999999999998},13.510899999999998,null,6.369999999999898E-2,4.737045630317017E-3,null,{"$f":"I53","v":1.2999999999999999E-3},{"$f":"Q50","v":10392.999999999998},13.510899999999998,null,0,0,null,{"$f":"P53","v":1.2999999999999999E-3},{"$f":"X50","v":10392.999999999998},13.510899999999998,null,0,0,null,{"$f":"W53","v":1.2999999999999999E-3},{"$f":"AE50","v":10392.999999999998},13.510899999999998,null,0,0,null,{"$f":"AD53","v":1.2999999999999999E-3},{"$f":"AL50","v":10392.999999999998},13.510899999999998,null,0,0]
["Standard Supply Service Charge",null,"Monthly",null,0.25,1,0.25,null,{"$f":"E54","v":0.25},1,0.25,null,0,0,null,{"$f":"I54","v":0.25},1,0.25,null,0,0,null,{"$f":"P54","v":0.25},1,0.25,null,0,0,null,{"$f":"W54","v":0.25},1,0.25,null,0,0,null,{"$f":"AD54","v":0.25},1,0.25,null,0,0]
["Debt Retirement Charge (DRC)",null,"per kWh",null,7.0000000000000001E-3,{"$f":"E18","v":10000},70,null,{"$f":"E55","v":7.0000000000000001E-3},{"$f":"E18","v":10000},70,null,0,0,null,{"$f":"I55","v":7.0000000000000001E-3},{"$f":"J55","v":10000},70,null,0,0,null,{"$f":"P55","v":7.0000000000000001E-3},{"$f":"Q55","v":10000},70,null,0,0,null,{"$f":"W55","v":7.0000000000000001E-3},{"$f":"X55","v":10000},70,null,0,0,null,{"$f":"AD55","v":7.0000000000000001E-3},{"$f":"AE55","v":10000},70,null,0,0]
["TOU - Off Peak",null,"per kWh",null,8.3000000000000004E-2,{"$f":"0.64*$E$18","v":6400},531.20000000000005,null,{"$f":"E56","v":8.3000000000000004E-2},{"$f":"F56","v":6400},531.20000000000005,null,0,0,null,{"$f":"I56","v":8.3000000000000004E-2},{"$f":"J56","v":6400},531.20000000000005,null,0,0,null,{"$f":"P56","v":8.3000000000000004E-2},{"$f":"Q56","v":6400},531.20000000000005,null,0,0,null,{"$f":"W56","v":8.3000000000000004E-2},{"$f":"X56","v":6400},531.20000000000005,null,0,0,null,{"$f":"AD56","v":8.3000000000000004E-2},{"$f":"AE56","v":6400},531.20000000000005,null,0,0]
["TOU - Mid Peak",null,"per kWh",null,0.128,{"$f":"0.18*$E$18","v":1800},230.4,null,{"$f":"E57","v":0.128},{"$f":"F57","v":1800},230.4,null,0,0,null,{"$f":"I57","v":0.128},1800,230.4,null,0,0,null,{"$f":"P57","v":0.128},1800,230.4,null,0,0,null,{"$f":"W57","v":0.128},1800,230.4,null,0,0,null,{"$f":"AD57","v":0.128},1800,230.4,null,0,0]
["TOU - On Peak",null,"per kWh",null,0.17499999999999999,{"$f":"0.18*$E$18","v":1800},315,null,0.17499999999999999,{"$f":"F58","v":1800},315,null,0,0,null,0.17499999999999999,1800,315,null,0,0,null,0.17499999999999999,1800,315,null,0,0,null,0.17499999999999999,1800,315,null,0,0,null,0.17499999999999999,1800,315,null,0,0]
["Energy - RPP - Tier 1",null,"per kWh",null,9.9000000000000005E-2,{"$f":"IF(AND($S$1=1, E18>=600), 600, IF(AND($S$1=1, AND(E18<600, E18>=0)), E18, IF(AND($S$1=2, E18>=1000), 1000, IF(AND($S$1=2, AND(E18<1000, E18>=0)), E18))))","v":600},{"$f":"F59*E59","v":59.400000000000006},null,9.9000000000000005E-2,{"$f":"F59","v":600},{"$f":"J59*I59","v":59.400000000000006},null,0,0,null,9.9000000000000005E-2,600,{"$f":"Q59*P59","v":59.400000000000006},null,0,0,null,9.9000000000000005E-2,600,{"$f":"X59*W59","v":59.400000000000006},null,0,0,null,9.9000000000000005E-2,600,{"$f":"AE59*AD59","v":59.400000000000006},null,0,0,null,9.9000000000000005E-2,600,{"$f":"AL59*AK59","v":59.400000000000006},null,0,0]
["Energy - RPP - Tier 2",null,"per kWh",null,0.11600000000000001,{"$f":"IF(AND($S$1=1, E18>=600), E18-600, IF(AND($S$1=1, AND(E18<600, E18>=0)), 0, IF(AND($S$1=2, E18>=1000), E18-1000, IF(AND($S$1=2, AND(E18<1000, E18>=0)), 0))))","v":9400},{"$f":"F60*E60","v":1090.4000000000001},null,0.11600000000000001,{"$f":"F60","v":9400},{"$f":"J60*I60","v":1090.4000000000001},null,0,0,null,0.11600000000000001,9400,{"$f":"Q60*P60","v":1090.4000000000001},null,0,0,null,0.11600000000000001,9400,{"$f":"X60*W60","v":1090.4000000000001},null,0,0,null,0.11600000000000001,9400,{"$f":"AE60*AD60","v":1090.4000000000001},null,0,0,null,0.11600000000000001,9400,{"$f":"AL60*AK60","v":1090.4000000000001},null,0,0]
[null,null,null,null,null,null,null,null,null,null,null,null,null,null,null,null,null,null,null,null,"",null,null,null,null,null,null,"",null,null,null,null,null,null,"",null,null,null,null,null,null,""]
["Total Bill on TOU (before Taxes)",null,null,null,null,null,{"$f":"SUM(G52:G58,G51)","v":1493.7822400000002},null,null,null,{"$f":"SUM(K52:K58,K51)","v":1486.7706799999996},null,{"$f":"K62-G62","v":-7.0115600000005998},{"$f":"IF((G62)=0,\"\",(M62/G62))","v":-4.6938300725817969E-3},null,null,null,{"$f":"SUM(R52:R58,R51)","v":1544.2606799999996},null,{"$f":"R62-K62","v":57.490000000000009},3.8667698235749462E-2,null,null,null,{"$f":"SUM(Y52:Y58,Y51)","v":1548.6106799999998},null,{"$f":"Y62-R62","v":4.3500000000001364},2.816881926955582E-3,null,null,null,{"$f":"SUM(AF52:AF58,AF51)","v":1554.1006799999998},null,{"$f":"AF62-Y62","v":5.4900000000000091},3.5451130945319386E-3,null,null,null,{"$f":"SUM(AM52:AM58,AM51)","v":1559.2806799999996},null,{"$f":"AM62-AF62","v":5.1799999999998363},3.3331173885078262E-3]
["HST",null,null,null,0.13,null,{"$f":"G62*E63","v":194.19169120000004},null,0.13,null,{"$f":"K62*I63","v":193.28018839999996},null,-0.91150280000007911,-4.6938300725818021E-3,null,0.13,null,{"$f":"R62*P63","v":200.75388839999997},null,{"$f":"R63-K63","v":7.473700000000008},3.866769823574949E-2,null,0.13,null,{"$f":"Y62*W63","v":201.31938839999998},null,{"$f":"Y63-R63","v":0.56550000000001432},2.8168819269555651E-3,null,0.13,null,{"$f":"AF62*AD63","v":202.03308839999997},null,{"$f":"AF63-Y63","v":0.71369999999998868},3.5451130945318766E-3,null,0.13,null,{"$f":"AM62*AK63","v":202.70648839999996},null,{"$f":"AM63-AF63","v":0.67339999999998668},3.3331173885078657E-3]
["Total Bill (including HST)",null,null,null,null,null,{"$f":"G62+G63","v":1687.9739312000002},null,null,null,{"$f":"K62+K63","v":1680.0508683999997},null,-7.9230628000004799,-4.6938300725816798E-3,null,null,null,{"$f":"R62+R63","v":1745.0145683999997},null,64.963700000000017,3.8667698235749462E-2,null,null,null,{"$f":"Y62+Y63","v":1749.9300683999998},null,4.9155000000000655,2.8168819269555312E-3,null,null,null,{"$f":"AF62+AF63","v":1756.1337683999998},null,6.2037000000000262,3.5451130945319477E-3,null,null,null,{"$f":"AM62+AM63","v":1761.9871683999995},null,5.8533999999997377,3.3331173885077824E-3]
["Ontario Clean Energy Benefit 1",null,null,null,null,null,{"$f":"ROUND(-G64*10%,2)","v":-168.8},null,null,null,null,null,168.8,-1,null,null,null,null,null,0,"",null,null,null,null,null,0,"",null,null,null,null,null,0,"",null,null,null,null,null,0,""]
["Total Bill on TOU (including OCEB)",null,null,null,null,null,{"$f":"G64+G65","v":1519.1739312000002},null,null,null,{"$f":"K64+K65","v":1680.0508683999997},null,160.87693719999947,0.10589764206454115,null,null,null,{"$f":"R64+R65","v":1745.0145683999997},null,64.963700000000017,3.8667698235749462E-2,null,null,null,{"$f":"Y64+Y65","v":1749.9300683999998},null,4.9155000000000655,2.8168819269555312E-3,null,null,null,{"$f":"AF64+AF65","v":1756.1337683999998},null,6.2037000000000262,3.5451130945319477E-3,null,null,null,{"$f":"AM64+AM65","v":1761.9871683999995},null,5.8533999999997377,3.3331173885077824E-3]
[null,null,null,null,null,null,null,null,null,null,null,null,null,null,null,null,null,null,null,null,"",null,null,null,null,null,null,"",null,null,null,null,null,null,"",null,null,null,null,null,null,""]
["Total Bill on RPP (before Taxes)",null,null,null,null,null,{"$f":"SUM(G60:G61,G51,G52:G55)","v":1507.5822400000002},null,null,null,{"$f":"SUM(K60:K61,K51,K52:K55)","v":1500.5706799999998},null,{"$f":"K68-G68","v":-7.0115600000003724},{"$f":"IF((G68)=0,\"\",(M68/G68))","v":-4.6508640218528782E-3},null,null,null,{"$f":"SUM(R60:R61,R51,R52:R55)","v":1558.0606799999998},null,{"$f":"R68-K68","v":57.490000000000009},3.8312090704051352E-2,null,null,null,{"$f":"SUM(Y60:Y61,Y51,Y52:Y55)","v":1562.41068},null,{"$f":"Y68-R68","v":4.3500000000001364},2.7919323398881593E-3,null,null,null,{"$f":"SUM(AF60:AF61,AF51,AF52:AF55)","v":1567.90068},null,{"$f":"AF68-Y68","v":5.4900000000000091},3.513800865723735E-3,null,null,null,{"$f":"SUM(AM60:AM61,AM51,AM52:AM55)","v":1573.0806799999998},null,{"$f":"AM68-AF68","v":5.1799999999998363},3.3037806961087844E-3]
["HST",null,null,null,0.13,null,{"$f":"G68*E69","v":195.98569120000002},null,0.13,null,{"$f":"K68*I69","v":195.07418839999997},null,-0.91150280000005068,{"$f":"IF((G69)=0,\"\",(M69/G69))","v":-4.6508640218528904E-3},null,0.13,null,{"$f":"R68*P69","v":202.54788839999998},null,{"$f":"R69-K69","v":7.473700000000008},3.8312090704051387E-2,null,0.13,null,{"$f":"Y68*W69","v":203.11338839999999},null,{"$f":"Y69-R69","v":0.56550000000001432},2.7919323398881428E-3,null,0.13,null,{"$f":"AF68*AD69","v":203.82708840000001},null,{"$f":"AF69-Y69","v":0.7137000000000171},3.5138008657238135E-3,null,0.13,null,{"$f":"AM68*AK69","v":204.50048839999999},null,{"$f":"AM69-AF69","v":0.67339999999998668},3.3037806961088234E-3]
["Total Bill (including HST)",null,null,null,null,null,{"$f":"G68+G69","v":1703.5679312000002},null,null,null,{"$f":"K68+K69","v":1695.6448683999997},null,-7.9230628000004799,-4.6508640218529129E-3,null,null,null,{"$f":"R68+R69","v":1760.6085683999997},null,64.963700000000017,3.8312090704051359E-2,null,null,null,{"$f":"Y68+Y69","v":1765.5240684},null,4.9155000000002929,2.7919323398882382E-3,null,null,null,{"$f":"AF68+AF69","v":1771.7277684000001},null,6.2037000000000262,3.5138008657237436E-3,null,null,null,{"$f":"AM68+AM69","v":1777.5811683999998},null,5.8533999999997377,3.3037806961087406E-3]
["Ontario Clean Energy Benefit 1",null,null,null,null,null,{"$f":"ROUND(-G70*10%,2)","v":-170.36},null,null,null,null,null,170.36,-1,null,null,null,null,null,0,"",null,null,null,null,null,0,"",null,null,null,null,null,0,"",null,null,null,null,null,0,""]
["Total Bill on RPP (including OCEB)",null,null,null,null,null,{"$f":"SUM(G70:G71)","v":1533.2079312000001},null,null,null,{"$f":"SUM(K70:K71)","v":1695.6448683999997},null,162.43693719999965,0.10594579762763469,null,null,null,{"$f":"SUM(R70:R71)","v":1760.6085683999997},null,64.963700000000017,3.8312090704051359E-2,null,null,null,{"$f":"SUM(Y70:Y71)","v":1765.5240684},null,4.9155000000002929,2.7919323398882382E-3,null,null,null,{"$f":"SUM(AF70:AF71)","v":1771.7277684000001},null,6.2037000000000262,3.5138008657237436E-3,null,null,null,{"$f":"SUM(AM70:AM71)","v":1777.5811683999998},null,5.8533999999997377,3.3037806961087406E-3]
[]
[]
["Loss Factor (%)",null,null,null,3.44E-2,null,null,null,3.9300000000000002E-2,null,null,null,null,null,null,3.9300000000000002E-2,null,null,null,null,null,null,3.9300000000000002E-2,null,null,null,null,null,null,3.9300000000000002E-2,null,null,null,null,null,null,3.9300000000000002E-2]
[]
["Distribution Excluding Rate Riders",null,null,null,"2015 Current Board-Approved",null,null,null,"2016 Test Year 1\nProposed",null,null,null,"Impact\n2016 TEST vs. \n2015 Bridge",null,null,"2017 Test Year 2\nProposed",null,null,null,"Impact\n2017 TEST 2 vs. \n2016 Test 1",null,null,"2018 Test Year 3\nProposed",null,null,null,"Impact\n2018 TEST 3 vs. \n2017 Test 2",null,null,"2019 Test Year 4\nProposed",null,null,null,"Impact\n2019 TEST 4 vs. \n2018 Test 3",null,null,"2020 Test Year 5 \nProposed",null,null,null,"Impact\n2020 TEST 5 vs. \n2019 Test 4"]
[null,null,"Charge Unit",null,"Rate","Volume","Charge",null,"Rate","Volume","Charge",null,"$ Change","% Change",null,"Rate","Volume","Charge",null,"$ Change","% Change",null,"Rate","Volume","Charge",null,"$ Change","% Change",null,"Rate","Volume","Charge",null,"$ Change","% Change",null,"Rate","Volume","Charge",null,"$ Change","% Change"]
[null,null,null,null,"($)",null,"($)",null,"($)",null,"($)",null,null,null,null,"($)",null,"($)",null,null,null,null,"($)",null,"($)",null,null,null,null,"($)",null,"($)",null,null,null,null,"($)",null,"($)"]
["Monthly Service Charge",null,"Monthly",null,25.85,1,{"$f":"F80*E80","v":25.85},null,{"$f":"'Rates Summary'!$E$29","v":14.27},1,{"$f":"J80*I80","v":14.27},null,{"$f":"K80-G80","v":-11.580000000000002},{"$f":"IF((G80)=0,\"\",(M80/G80))","v":-0.44796905222437144},null,{"$f":"'Rates Summary'!$F$29","v":14.59},1,{"$f":"Q80*P80","v":14.59},null,{"$f":"R80-K80","v":0.32000000000000028},{"$f":"IF((K80)=0,\"\",(T80/K80))","v":2.2424667133847252E-2},null,{"$f":"'Rates Summary'!$G$29","v":14.94},1,{"$f":"X80*W80","v":14.94},null,{"$f":"Y80-R80","v":0.34999999999999964},{"$f":"IF((R80)=0,\"\",(AA80/R80))","v":2.3989033584646994E-2},null,{"$f":"'Rates Summary'!$H$29","v":15.22},1,{"$f":"AE80*AD80","v":15.22},null,{"$f":"AF80-Y80","v":0.28000000000000114},{"$f":"IF((Y80)=0,\"\",(AH80/Y80))","v":1.8741633199464602E-2},null,{"$f":"'Rates Summary'!$I$29","v":15.4},1,{"$f":"AL80*AK80","v":15.4},null,{"$f":"AM80-AF80","v":0.17999999999999972},{"$f":"IF((AF80)=0,\"\",(AO80/AF80))","v":1.1826544021024949E-2}]
["Distribution Volumetric Rate",null,"per kWh",null,1.06E-2,{"$f":"$E$18","v":10000},{"$f":"F81*E81","v":106},null,{"$f":"'Rates Summary'!$E$41","v":1.46E-2},{"$f":"$E$18","v":10000},146,null,40,{"$f":"IF((G81)=0,\"\",(M81/G81))","v":0.37735849056603776},null,{"$f":"'Rates Summary'!$F$41","v":1.5100000000000001E-2},{"$f":"$E$18","v":10000},151,null,5,{"$f":"IF((K81)=0,\"\",(T81/K81))","v":3.4246575342465752E-2},null,{"$f":"'Rates Summary'!$G$41","v":1.55E-2},{"$f":"$E$18","v":10000},155,null,4,{"$f":"IF((R81)=0,\"\",(AA81/R81))","v":2.6490066225165563E-2},null,{"$f":"'Rates Summary'!$H$41","v":1.61E-2},{"$f":"$E$18","v":10000},161,null,6,{"$f":"IF((Y81)=0,\"\",(AH81/Y81))","v":3.870967741935484E-2},null,{"$f":"'Rates Summary'!$I$41","v":1.66E-2},{"$f":"$E$18","v":10000},166,null,5,{"$f":"IF((AF81)=0,\"\",(AO81/AF81))","v":3.1055900621118012E-2}]
["\"Regular\" Distribution Only",null,null,null,null,null,{"$f":"SUM(G79:G81)","v":131.85},null,null,null,{"$f":"SUM(K79:K81)","v":160.27000000000001},null,28.420000000000016,0.21554797117937063,null,null,null,{"$f":"SUM(R79:R81)","v":165.59},null,5.3199999999999932,3.3193985150059231E-2,null,null,null,{"$f":"SUM(Y79:Y81)","v":169.94},null,4.3499999999999943,2.6269702276707496E-2,null,null,null,{"$f":"SUM(AF79:AF81)","v":176.22},null,6.2800000000000011,3.6954219136165714E-2,null,null,null,{"$f":"SUM(AM79:AM81)","v":181.4},null,5.1800000000000068,2.9395074338894604E-2]
[]
[]
[null,"Residential (kWh) - 100, 250, 500, 800, 1000, 1500, 2000"]
[null,"GS<50kW (kWh) - 1000, 2000, 5000, 10000, 15000"]
[null,"GS>50kW (kW) - 60, 100, 500, 1000"]
[null,"Large User - range appropriate for utility"]
[null,"Lighting Classes and USL - 150 kWh and 1 kW, range appropriate for utility."]
[]
[null,null,"Note that cells with the highlighted color shown to the left indicate quantities that are loss adjusted."]

{"sheet":"Bill Impact GS < 50 15000kWh","index":14,"n_rows":91,"n_cols":42,"rows_kept":91,"cut":false,"hidden":false,"merged":[[19,33,19,34],[19,36,19,38],[20,20,21,20],[20,26,21,26],[19,40,19,41],[19,22,19,24],[19,26,19,27],[19,29,19,31],[20,27,21,27],[20,33,21,33],[20,34,21,34],[20,40,21,40],[20,41,21,41],[2,0,2,9],[9,0,9,13],[10,0,10,13],[13,2,13,13],[13,15,13,26],[19,4,19,6],[19,8,19,10],[19,12,19,13],[19,15,19,17],[19,19,19,20],[64,0,64,2],[20,2,21,2],[20,12,21,12],[20,13,21,13],[20,19,21,19],[76,29,76,31],[76,33,76,34],[77,34,78,34],[65,0,65,2],[70,0,70,2],[71,0,71,2],[76,4,76,6],[76,8,76,10],[76,12,76,13],[77,40,78,40],[77,41,78,41],[76,36,76,38],[76,40,76,41],[77,2,78,2],[77,12,78,12],[77,13,78,13],[77,19,78,19],[77,20,78,20],[77,26,78,26],[77,27,78,27],[77,33,78,33],[76,15,76,17],[76,19,76,20],[76,22,76,24],[76,26,76,27]]}
[null,null,null,null,null,null,null,null,null,null,null,null,"File Number:",{"$f":"EBNUMBER","v":"EB-2015-0083"},null,null,null,null,1]
[null,null,null,null,null,null,null,null,null,null,null,null,"Exhibit:",{"$f":"'Bill Impact Resi 204kWh'!$N$2","v":8}]
[null,null,null,null,null,null,null,null,null,null,null,null,"Tab:",{"$f":"'Bill Impact Resi 204kWh'!$N$3","v":4}]
[null,null,null,null,null,null,null,null,null,null,null,null,"Schedule:",{"$f":"'Bill Impact Resi 204kWh'!$N$4","v":3}]
[null,null,null,null,null,null,null,null,null,null,null,null,"Page:"]
[]
[null,null,null,null,null,null,null,null,null,null,null,null,"Date:",{"$f":"'Bill Impact Resi 204kWh'!$N$7","v":"Settlement"}]
[]
[]
["Appendix 2-W"]
["Bill Impacts"]
[]
[]
["Customer Class:",null,"General Service Less Than 50 kW",null,null,null,null,null,null,null,null,null,null,null,null,{"$f":"C14","v":"General Service Less Than 50 kW"},null,null,null,null,null,null,null,null,null,null,null,null,null,null,null,null,null,null,null,null,{"$f":"P14","v":"General Service Less Than 50 kW"}]
[]
["TOU / non-TOU:",null,"TOU"]
[]
[null,null,"Consumption",null,15000," kWh"]
[]
[null,null,null,null,"2015 Current Board-Approved",null,null,null,"2016 Test Year 1\nProposed",null,null,null,"Impact\n2016 TEST vs. \n2015 Bridge",null,null,"2017 Test Year 2\nProposed",null,null,null,"Impact\n2017 TEST 2 vs. \n2016 Test 1",null,null,"2018 Test Year 3\nProposed",null,null,null,"Impact\n2018 TEST 3 vs. \n2017 Test 2",null,null,"2019 Test Year 4\nProposed",null,null,null,"Impact\n2019 TEST 4 vs. \n2018 Test 3",null,null,"2020 Test Year 5 \nProposed",null,null,null,"Impact\n2019 TEST 5 vs. \n2019 Test 4"]
[null,null,"Charge Unit",null,"Rate","Volume","Charge",null,"Rate","Volume","Charge",null,"$ Change","% Change",null,"Rate","Volume","Charge",null,"$ Change","% Change",null,"Rate","Volume","Charge",null,"$ Change","% Change",null,"Rate","Volume","Charge",null,"$ Change","% Change",null,"Rate","Volume","Charge",null,"$ Change","% Change"]
[null,null,null,null,"($)",null,"($)",null,"($)",null,"($)",null,null,null,null,"($)",null,"($)",null,null,null,null,"($)",null,"($)",null,null,null,null,"($)",null,"($)",null,null,null,null,"($)",null,"($)"]
["Monthly Service Charge",null,"Monthly",null,25.85,1,{"$f":"F23*E23","v":25.85},null,{"$f":"'Rates Summary'!$E$29","v":14.27},1,{"$f":"J23*I23","v":14.27},null,{"$f":"K23-G23","v":-11.580000000000002},{"$f":"IF((G23)=0,\"\",(M23/G23))","v":-0.44796905222437144},null,{"$f":"'Rates Summary'!$F$29","v":14.59},1,{"$f":"Q23*P23","v":14.59},null,{"$f":"R23-K23","v":0.32000000000000028},{"$f":"IF((K23)=0,\"\",(T23/K23))","v":2.2424667133847252E-2},null,{"$f":"'Rates Summary'!$G$29","v":14.94},1,{"$f":"X23*W23","v":14.94},null,{"$f":"Y23-R23","v":0.34999999999999964},{"$f":"IF((R23)=0,\"\",(AA23/R23))","v":2.3989033584646994E-2},null,{"$f":"'Rates Summary'!$H$29","v":15.22},1,{"$f":"AE23*AD23","v":15.22},null,{"$f":"AF23-Y23","v":0.28000000000000114},{"$f":"IF((Y23)=0,\"\",(AH23/Y23))","v":1.8741633199464602E-2},null,{"$f":"'Rates Summary'!$I$29","v":15.4},1,{"$f":"AL23*AK23","v":15.4},null,{"$f":"AM23-AF23","v":0.17999999999999972},{"$f":"IF((AF23)=0,\"\",(AO23/AF23))","v":1.1826544021024949E-2}]
["Smart Meter (SMIRR) Rate Rider",null,"Monthly",null,3.65,1,{"$f":"F24*E24","v":3.65},null,0,1,0,null,-3.65,{"$f":"IF((G24)=0,\"\",(M24/G24))","v":-1},null,0,1,0,null,0,{"$f":"IF((K24)=0,\"\",(T24/K24))","v":""},null,0,1,0,null,0,{"$f":"IF((R24)=0,\"\",(AA24/R24))","v":""},null,0,1,0,null,0,{"$f":"IF((Y24)=0,\"\",(AH24/Y24))","v":""},null,0,1,0,null,0,{"$f":"IF((AF24)=0,\"\",(AO24/AF24))","v":""}]
["Rate Rider Smart Meters Capital (2016)",null,"Monthly",null,0,1,0,null,{"$f":"'Rates Summary'!D10","v":0.43},1,0.43,null,0.43,1,null,0,1,0,null,-0.43,-1,null,0,1,0,null,0,"",null,0,1,0,null,0,"",null,0,1,0,null,0,""]
["Rate Rider Recovery of Stranded Meters (2016)",null,"Monthly",null,0,1,0,null,{"$f":"'Rates Summary'!$D$11","v":6.4},1,6.4,null,6.4,1,null,0,1,0,null,-6.4,-1,null,0,1,0,null,0,"",null,0,1,0,null,0,"",null,0,1,0,null,0,""]
[null,null,null,null,null,1,0,null,0,1,0,null,0,{"$f":"IF((G27)=0,\"\",(M27/G27))","v":""},null,0,1,0,null,0,"",null,0,1,0,null,0,"",null,0,1,0,null,0,"",null,0,1,0,null,0,""]
[null,null,null,null,null,1,0,null,0,1,0,null,0,{"$f":"IF((G28)=0,\"\",(M28/G28))","v":""},null,0,1,0,null,0,"",null,0,1,0,null,0,"",null,0,1,0,null,0,"",null,0,1,0,null,0,""]
["Distribution Volumetric Rate",null,"per kWh",null,1.06E-2,{"$f":"$E$18","v":15000},159,null,{"$f":"'Rates Summary'!$E$41","v":1.46E-2},{"$f":"$E$18","v":15000},219,null,60,{"$f":"IF((G29)=0,\"\",(M29/G29))","v":0.37735849056603776},null,{"$f":"'Rates Summary'!$F$41","v":1.5100000000000001E-2},{"$f":"$E$18","v":15000},226.5,null,7.5,3.4246575342465752E-2,null,{"$f":"'Rates Summary'!$G$41","v":1.55E-2},{"$f":"$E$18","v":15000},232.5,null,6,2.6490066225165563E-2,null,{"$f":"'Rates Summary'!$H$41","v":1.61E-2},{"$f":"$E$18","v":15000},241.5,null,9,3.870967741935484E-2,null,{"$f":"'Rates Summary'!$I$41","v":1.66E-2},{"$f":"$E$18","v":15000},249,null,7.5,3.1055900621118012E-2]
["Rate Rider Tax Change (2015)",null,"per kWh",null,-1E-4,{"$f":"$E$18","v":15000},-1.5,null,0,{"$f":"$E$18","v":15000},0,null,1.5,{"$f":"IF((G30)=0,\"\",(M30/G30))","v":-1},null,0,{"$f":"$E$18","v":15000},0,null,0,"",null,0,{"$f":"$E$18","v":15000},0,null,0,"",null,0,{"$f":"$E$18","v":15000},0,null,0,"",null,0,{"$f":"$E$18","v":15000},0,null,0,""]
["LRAM VA (2016)",null,"per kWh",null,0,{"$f":"$E$18","v":15000},0,null,{"$f":"'Rates Summary'!D7","v":8.0000000000000004E-4},15000,12,null,12,1,null,0,15000,0,null,-12,{"$f":"IF((K31)=0,\"\",(T31/K31))","v":-1},null,0,15000,0,null,0,"",null,0,15000,0,null,0,"",null,0,15000,0,null,0,""]
["Rate Rider Incremental Capital 2012 True-Up (2016)",null,"per kWh",null,0,{"$f":"$E$18","v":15000},0,null,{"$f":"'Rates Summary'!D9","v":2.0000000000000001E-4},15000,3,null,3,1,null,0,15000,0,null,-3,{"$f":"IF((K32)=0,\"\",(T32/K32))","v":-1},null,0,15000,0,null,0,"",null,0,15000,0,null,0,"",null,0,15000,0,null,0,""]
[null,null,"per kWh",null,null,15000,0,null,null,15000,0,null,0,{"$f":"IF((G33)=0,\"\",(M33/G33))","v":""},null,null,15000,0,null,0,"",null,null,15000,0,null,0,"",null,null,15000,0,null,0,"",null,null,15000,0,null,0,""]
[null,null,"per kWh",null,null,15000,0,null,null,15000,0,null,0,"",null,null,15000,0,null,0,"",null,null,15000,0,null,0,"",null,null,15000,0,null,0,"",null,null,15000,0,null,0,""]
[null,null,null,null,null,15000,0,null,null,15000,0,null,0,"",null,null,15000,0,null,0,"",null,null,15000,0,null,0,"",null,null,15000,0,null,0,"",null,null,15000,0,null,0,""]
[null,null,null,null,null,15000,0,null,null,15000,0,null,0,"",null,null,15000,0,null,0,"",null,null,15000,0,null,0,"",null,null,15000,0,null,0,"",null,null,15000,0,null,0,""]
[null,null,null,null,null,15000,0,null,null,15000,0,null,0,"",null,null,15000,0,null,0,"",null,null,15000,0,null,0,"",null,null,15000,0,null,0,"",null,null,15000,0,null,0,""]
[null,null,null,null,null,15000,0,null,null,15000,0,null,0,"",null,null,15000,0,null,0,"",null,null,15000,0,null,0,"",null,null,15000,0,null,0,"",null,null,15000,0,null,0,""]
["Sub-Total A (excluding pass through)",null,null,null,null,null,{"$f":"SUM(G23:G38)","v":187},null,null,null,{"$f":"SUM(K23:K38)","v":255.1},null,68.099999999999994,0.36417112299465237,null,null,null,{"$f":"SUM(R23:R38)","v":241.09},null,-14.009999999999991,-5.4919639357114823E-2,null,null,null,{"$f":"SUM(Y23:Y38)","v":247.44},null,6.3499999999999943,2.6338711684433174E-2,null,null,null,{"$f":"SUM(AF23:AF38)","v":256.72000000000003},null,9.2800000000000296,{"$f":"IF((Y39)=0,\"\",(AH39/Y39))","v":3.750404138376992E-2},null,null,null,{"$f":"SUM(AM23:AM38)","v":264.39999999999998},null,7.67999999999995,2.9915861639139722E-2]
["Deferral/Variance Account Disposition Rate Rider (2016)",null,"per kWh",null,0,{"$f":"$E$18","v":15000},{"$f":"F40*E40","v":0},null,{"$f":"'Rates Summary'!D5","v":-6.9999999999999999E-4},{"$f":"$E$18","v":15000},{"$f":"J40*I40","v":-10.5},null,{"$f":"K40-G40","v":-10.5},1,null,0,{"$f":"$E$18","v":15000},{"$f":"Q40*P40","v":0},null,10.5,-1,null,0,{"$f":"$E$18","v":15000},{"$f":"X40*W40","v":0},null,0,"",null,0,{"$f":"$E$18","v":15000},{"$f":"AE40*AD40","v":0},null,0,{"$f":"IF((Y40)=0,\"\",(AH40/Y40))","v":""},null,0,{"$f":"$E$18","v":15000},{"$f":"AL40*AK40","v":0},null,0,""]
[null,null,null,null,null,{"$f":"$E$18","v":15000},{"$f":"F41*E41","v":0},null,{"$f":"E41","v":0},{"$f":"$E$18","v":15000},{"$f":"J41*I41","v":0},null,{"$f":"K41-G41","v":0},{"$f":"IF((G41)=0,\"\",(M41/G41))","v":""},null,null,{"$f":"$E$18","v":15000},{"$f":"Q41*P41","v":0},null,0,"",null,null,{"$f":"$E$18","v":15000},{"$f":"X41*W41","v":0},null,0,"",null,null,{"$f":"$E$18","v":15000},{"$f":"AE41*AD41","v":0},null,0,"",null,null,{"$f":"$E$18","v":15000},{"$f":"AL41*AK41","v":0},null,0,""]
["Rate Rider CGAAP Account 1576 (2016)",null,"per kWh",null,0,15000,0,null,{"$f":"'Rates Summary'!$D$8","v":-6.1999999999999998E-3},15000,-93,null,-93,1,null,0,15000,0,null,93,-1,null,0,15000,0,null,0,"",null,0,15000,0,null,0,"",null,0,15000,0,null,0,""]
["Disposition of Global Adjustment (2015)  \nApplicable to Non-RPP Customers",null,"per kWh",null,1.5599999999999999E-2,0,0,null,0,15000,0,null,0,"",null,0,15000,0,null,0,"",null,0,15000,0,null,0,"",null,0,15000,0,null,0,"",null,0,15000,0,null,0,""]
["Disposition of Global Adjustment (2016) \nApplicable to Non-RPP Customers",null,"per kWh",null,0,15000,0,null,{"$f":"'Rates Summary'!D6","v":2.0500000000000001E-2},0,0,null,0,"",null,0,15000,0,null,0,"",null,0,15000,0,null,0,"",null,0,15000,0,null,0,"",null,0,15000,0,null,0,""]
["Low Voltage Service Charge",null,"per kWh",null,5.9999999999999995E-4,15000,{"$f":"F45*E45","v":9},null,{"$f":"'Rates Summary'!D15","v":1.1000000000000001E-3},15000,{"$f":"J45*I45","v":16.5},null,{"$f":"K45-G45","v":7.5},{"$f":"IF((G45)=0,\"\",(M45/G45))","v":0.83333333333333337},null,{"$f":"I45","v":1.1000000000000001E-3},15000,{"$f":"Q45*P45","v":16.5},null,{"$f":"R45-K45","v":0},0,null,{"$f":"P45","v":1.1000000000000001E-3},15000,{"$f":"X45*W45","v":16.5},null,{"$f":"Y45-R45","v":0},0,null,{"$f":"W45","v":1.1000000000000001E-3},15000,{"$f":"AE45*AD45","v":16.5},null,{"$f":"AF45-Y45","v":0},0,null,{"$f":"AD45","v":1.1000000000000001E-3},15000,{"$f":"AL45*AK45","v":16.5},null,{"$f":"AM45-AF45","v":0},0]
["Line Losses on Cost of Power",null,"per kWh",null,{"$f":"IF(ISBLANK(C16)=TRUE, 0, IF(C16=\"TOU\", 0.64*$E$56+0.18*$E$57+0.18*$E$58, IF(AND(C16=\"non-TOU\", F60>0), E60,E59)))","v":0.10766000000000001},{"$f":"$E$18*(1+$E$75)-$E$18","v":516},55.55256,null,{"$f":"0.64*$E$56+0.18*$E$57+0.18*$E$58","v":0.10766000000000001},{"$f":"$E$18*(1+$I$75)-$E$18","v":589.49999999999818},63.465569999999808,null,7.913009999999808,0.14244186046511281,null,{"$f":"0.64*$E$56+0.18*$E$57+0.18*$E$58","v":0.10766000000000001},{"$f":"$E$18*(1+$I$75)-$E$18","v":589.49999999999818},{"$f":"Q46*P46","v":63.465569999999808},null,{"$f":"R46-K46","v":0},0,null,{"$f":"0.64*$E$56+0.18*$E$57+0.18*$E$58","v":0.10766000000000001},{"$f":"$E$18*(1+$I$75)-$E$18","v":589.49999999999818},{"$f":"X46*W46","v":63.465569999999808},null,{"$f":"Y46-R46","v":0},0,null,{"$f":"0.64*$E$56+0.18*$E$57+0.18*$E$58","v":0.10766000000000001},{"$f":"$E$18*(1+$I$75)-$E$18","v":589.49999999999818},{"$f":"AE46*AD46","v":63.465569999999808},null,{"$f":"AF46-Y46","v":0},0,null,{"$f":"0.64*$E$56+0.18*$E$57+0.18*$E$58","v":0.10766000000000001},{"$f":"$E$18*(1+$I$75)-$E$18","v":589.49999999999818},{"$f":"AL46*AK46","v":63.465569999999808},null,{"$f":"AM46-AF46","v":0},0]
["Smart Meter Entity Charge",null,"Monthly",null,0.79,1,{"$f":"F47*E47","v":0.79},null,0.79,1,{"$f":"J47*I47","v":0.79},null,{"$f":"K47-G47","v":0},null,null,0.79,1,{"$f":"Q47*P47","v":0.79},null,{"$f":"R47-K47","v":0},0,null,0.79,1,{"$f":"X47*W47","v":0.79},null,{"$f":"Y47-R47","v":0},0,null,0,1,{"$f":"AE47*AD47","v":0},null,{"$f":"AF47-Y47","v":-0.79},-1,null,0,1,{"$f":"AL47*AK47","v":0},null,{"$f":"AM47-AF47","v":0},""]
["Sub-Total B - Distribution (includes Sub-Total A)",null,null,null,null,null,{"$f":"SUM(G40:G47)+G39","v":252.34255999999999},null,null,null,{"$f":"SUM(K40:K47)+K39","v":232.3555699999998},null,{"$f":"K48-G48","v":-19.986990000000191},{"$f":"IF((G48)=0,\"\",(M48/G48))","v":-7.9205782805723268E-2},null,null,null,{"$f":"SUM(R40:R47)+R39","v":321.84556999999984},null,{"$f":"R48-K48","v":89.490000000000038},0.38514247797029405,null,null,null,{"$f":"SUM(Y40:Y47)+Y39","v":328.1955699999998},null,{"$f":"Y48-R48","v":6.3499999999999659},1.9729959309366815E-2,null,null,null,{"$f":"SUM(AF40:AF47)+AF39","v":336.68556999999987},null,{"$f":"AF48-Y48","v":8.4900000000000659},2.5868722115902024E-2,null,null,null,{"$f":"SUM(AM40:AM47)+AM39","v":344.36556999999982},null,{"$f":"AM48-AF48","v":7.67999999999995},2.2810600406782962E-2]
["RTSR - Network",null,"per kWh",null,6.0000000000000001E-3,{"$f":"$E$18*(1+$E$75)","v":15516},{"$f":"F49*E49","v":93.096000000000004},null,{"$f":"'Rates Summary'!D17","v":6.3E-3},{"$f":"$E$18*(1+$I$75)","v":15589.499999999998},{"$f":"J49*I49","v":98.213849999999994},null,{"$f":"K49-G49","v":5.11784999999999},5.4973897911832839E-2,null,{"$f":"I49","v":6.3E-3},{"$f":"$E$18*(1+P75)","v":15589.499999999998},{"$f":"Q49*P49","v":98.213849999999994},null,0,0,null,{"$f":"P49","v":6.3E-3},{"$f":"$E$18*(1+W75)","v":15589.499999999998},{"$f":"X49*W49","v":98.213849999999994},null,0,0,null,{"$f":"W49","v":6.3E-3},{"$f":"$E$18*(1+AD75)","v":15589.499999999998},{"$f":"AE49*AD49","v":98.213849999999994},null,0,0,null,{"$f":"AD49","v":6.3E-3},{"$f":"$E$18*(1+AK75)","v":15589.499999999998},{"$f":"AL49*AK49","v":98.213849999999994},null,0,0]
["RTSR - Line and Transformation Connection",null,"per kWh",null,4.5999999999999999E-3,{"$f":"F49","v":15516},{"$f":"F50*E50","v":71.373599999999996},null,{"$f":"'Rates Summary'!D18","v":5.1000000000000004E-3},{"$f":"J49","v":15589.499999999998},{"$f":"J50*I50","v":79.506450000000001},null,8.1328500000000048,0.11394759406839511,null,{"$f":"I50","v":5.1000000000000004E-3},{"$f":"Q49","v":15589.499999999998},{"$f":"Q50*P50","v":79.506450000000001},null,0,0,null,{"$f":"P50","v":5.1000000000000004E-3},{"$f":"X49","v":15589.499999999998},{"$f":"X50*W50","v":79.506450000000001},null,0,0,null,{"$f":"W50","v":5.1000000000000004E-3},{"$f":"AE49","v":15589.499999999998},{"$f":"AE50*AD50","v":79.506450000000001},null,0,0,null,{"$f":"AD50","v":5.1000000000000004E-3},{"$f":"AL49","v":15589.499999999998},{"$f":"AL50*AK50","v":79.506450000000001},null,0,0]
["Sub-Total C - Delivery (including Sub-Total B)",null,null,null,null,null,{"$f":"SUM(G48:G50)","v":416.81216000000001},null,null,null,{"$f":"SUM(K48:K50)","v":410.07586999999978},null,-6.7362900000002242,-1.6161452679308165E-2,null,null,null,{"$f":"SUM(R48:R50)","v":499.56586999999979},null,89.490000000000009,0.21822790987433632,null,null,null,{"$f":"SUM(Y48:Y50)","v":505.91586999999981},null,6.3500000000000227,1.2711036484538116E-2,null,null,null,{"$f":"SUM(AF48:AF50)","v":514.40586999999982},null,8.4900000000000091,1.6781446290664914E-2,null,null,null,{"$f":"SUM(AM48:AM50)","v":522.08586999999977},null,7.67999999999995,1.4929845182365342E-2]
["Wholesale Market Service Charge (WMSC)",null,"per kWh",null,4.4000000000000003E-3,{"$f":"F50","v":15516},{"$f":"F52*E52","v":68.270400000000009},null,{"$f":"E52","v":4.4000000000000003E-3},{"$f":"J50","v":15589.499999999998},{"$f":"J52*I52","v":68.593800000000002},null,0.32339999999999236,4.7370456303169797E-3,null,{"$f":"I52","v":4.4000000000000003E-3},{"$f":"Q50","v":15589.499999999998},{"$f":"Q52*P52","v":68.593800000000002},null,0,0,null,{"$f":"P52","v":4.4000000000000003E-3},{"$f":"X50","v":15589.499999999998},{"$f":"X52*W52","v":68.593800000000002},null,0,0,null,{"$f":"W52","v":4.4000000000000003E-3},{"$f":"AE50","v":15589.499999999998},{"$f":"AE52*AD52","v":68.593800000000002},null,0,0,null,{"$f":"AD52","v":4.4000000000000003E-3},{"$f":"AL50","v":15589.499999999998},{"$f":"AL52*AK52","v":68.593800000000002},null,0,0]
["Rural and Remote Rate Protection (RRRP)",null,"per kWh",null,1.2999999999999999E-3,{"$f":"F50","v":15516},20.1708,null,{"$f":"E53","v":1.2999999999999999E-3},{"$f":"J50","v":15589.499999999998},20.266349999999996,null,9.5549999999995805E-2,4.7370456303168842E-3,null,{"$f":"I53","v":1.2999999999999999E-3},{"$f":"Q50","v":15589.499999999998},20.266349999999996,null,0,0,null,{"$f":"P53","v":1.2999999999999999E-3},{"$f":"X50","v":15589.499999999998},20.266349999999996,null,0,0,null,{"$f":"W53","v":1.2999999999999999E-3},{"$f":"AE50","v":15589.499999999998},20.266349999999996,null,0,0,null,{"$f":"AD53","v":1.2999999999999999E-3},{"$f":"AL50","v":15589.499999999998},20.266349999999996,null,0,0]
["Standard Supply Service Charge",null,"Monthly",null,0.25,1,0.25,null,{"$f":"E54","v":0.25},1,0.25,null,0,0,null,{"$f":"I54","v":0.25},1,0.25,null,0,0,null,{"$f":"P54","v":0.25},1,0.25,null,0,0,null,{"$f":"W54","v":0.25},1,0.25,null,0,0,null,{"$f":"AD54","v":0.25},1,0.25,null,0,0]
["Debt Retirement Charge (DRC)",null,"per kWh",null,7.0000000000000001E-3,{"$f":"E18","v":15000},105,null,{"$f":"E55","v":7.0000000000000001E-3},{"$f":"E18","v":15000},105,null,0,0,null,{"$f":"I55","v":7.0000000000000001E-3},{"$f":"J55","v":15000},105,null,0,0,null,{"$f":"P55","v":7.0000000000000001E-3},{"$f":"Q55","v":15000},105,null,0,0,null,{"$f":"W55","v":7.0000000000000001E-3},{"$f":"X55","v":15000},105,null,0,0,null,{"$f":"AD55","v":7.0000000000000001E-3},{"$f":"AE55","v":15000},105,null,0,0]
["TOU - Off Peak",null,"per kWh",null,8.3000000000000004E-2,{"$f":"0.64*$E$18","v":9600},796.80000000000007,null,{"$f":"E56","v":8.3000000000000004E-2},{"$f":"F56","v":9600},796.80000000000007,null,0,0,null,{"$f":"I56","v":8.3000000000000004E-2},{"$f":"J56","v":9600},796.80000000000007,null,0,0,null,{"$f":"P56","v":8.3000000000000004E-2},{"$f":"Q56","v":9600},796.80000000000007,null,0,0,null,{"$f":"W56","v":8.3000000000000004E-2},{"$f":"X56","v":9600},796.80000000000007,null,0,0,null,{"$f":"AD56","v":8.3000000000000004E-2},{"$f":"AE56","v":9600},796.80000000000007,null,0,0]
["TOU - Mid Peak",null,"per kWh",null,0.128,{"$f":"0.18*$E$18","v":2700},345.6,null,{"$f":"E57","v":0.128},{"$f":"F57","v":2700},345.6,null,0,0,null,{"$f":"I57","v":0.128},2700,345.6,null,0,0,null,{"$f":"P57","v":0.128},2700,345.6,null,0,0,null,{"$f":"W57","v":0.128},2700,345.6,null,0,0,null,{"$f":"AD57","v":0.128},2700,345.6,null,0,0]
["TOU - On Peak",null,"per kWh",null,0.17499999999999999,{"$f":"0.18*$E$18","v":2700},472.49999999999994,null,0.17499999999999999,{"$f":"F58","v":2700},472.49999999999994,null,0,0,null,0.17499999999999999,2700,472.49999999999994,null,0,0,null,0.17499999999999999,2700,472.49999999999994,null,0,0,null,0.17499999999999999,2700,472.49999999999994,null,0,0,null,0.17499999999999999,2700,472.49999999999994,null,0,0]
["Energy - RPP - Tier 1",null,"per kWh",null,9.9000000000000005E-2,{"$f":"IF(AND($S$1=1, E18>=600), 600, IF(AND($S$1=1, AND(E18<600, E18>=0)), E18, IF(AND($S$1=2, E18>=1000), 1000, IF(AND($S$1=2, AND(E18<1000, E18>=0)), E18))))","v":600},{"$f":"F59*E59","v":59.400000000000006},null,9.9000000000000005E-2,{"$f":"F59","v":600},{"$f":"J59*I59","v":59.400000000000006},null,0,0,null,9.9000000000000005E-2,600,{"$f":"Q59*P59","v":59.400000000000006},null,0,0,null,9.9000000000000005E-2,600,{"$f":"X59*W59","v":59.400000000000006},null,0,0,null,9.9000000000000005E-2,600,{"$f":"AE59*AD59","v":59.400000000000006},null,0,0,null,9.9000000000000005E-2,600,{"$f":"AL59*AK59","v":59.400000000000006},null,0,0]
["Energy - RPP - Tier 2",null,"per kWh",null,0.11600000000000001,{"$f":"IF(AND($S$1=1, E18>=600), E18-600, IF(AND($S$1=1, AND(E18<600, E18>=0)), 0, IF(AND($S$1=2, E18>=1000), E18-1000, IF(AND($S$1=2, AND(E18<1000, E18>=0)), 0))))","v":14400},{"$f":"F60*E60","v":1670.4},null,0.11600000000000001,{"$f":"F60","v":14400},{"$f":"J60*I60","v":1670.4},null,0,0,null,0.11600000000000001,14400,{"$f":"Q60*P60","v":1670.4},null,0,0,null,0.11600000000000001,14400,{"$f":"X60*W60","v":1670.4},null,0,0,null,0.11600000000000001,14400,{"$f":"AE60*AD60","v":1670.4},null,0,0,null,0.11600000000000001,14400,{"$f":"AL60*AK60","v":1670.4},null,0,0]
[null,null,null,null,null,null,null,null,null,null,null,null,null,null,null,null,null,null,null,null,"",null,null,null,null,null,null,"",null,null,null,null,null,null,"",null,null,null,null,null,null,""]
["Total Bill on TOU (before Taxes)",null,null,null,null,null,{"$f":"SUM(G52:G58,G51)","v":2225.4033600000002},null,null,null,{"$f":"SUM(K52:K58,K51)","v":2219.0860199999997},null,{"$f":"K62-G62","v":-6.3173400000005131},{"$f":"IF((G62)=0,\"\",(M62/G62))","v":-2.8387393106122176E-3},null,null,null,{"$f":"SUM(R52:R58,R51)","v":2308.57602},null,{"$f":"R62-K62","v":89.490000000000236},4.0327413716030824E-2,null,null,null,{"$f":"SUM(Y52:Y58,Y51)","v":2314.9260199999999},null,{"$f":"Y62-R62","v":6.3499999999999091},2.7506133412924859E-3,null,null,null,{"$f":"SUM(AF52:AF58,AF51)","v":2323.4160199999997},null,{"$f":"AF62-Y62","v":8.4899999999997817},3.6675038107696341E-3,null,null,null,{"$f":"SUM(AM52:AM58,AM51)","v":2331.09602},null,{"$f":"AM62-AF62","v":7.680000000000291},3.3054777680323871E-3]
["HST",null,null,null,0.13,null,{"$f":"G62*E63","v":289.30243680000007},null,0.13,null,{"$f":"K62*I63","v":288.48118259999995},null,-0.82125420000011218,-2.8387393106123742E-3,null,0.13,null,{"$f":"R62*P63","v":300.11488259999999},null,{"$f":"R63-K63","v":11.633700000000033},4.0327413716030831E-2,null,0.13,null,{"$f":"Y62*W63","v":300.94038260000002},null,{"$f":"Y63-R63","v":0.82550000000003365},2.7506133412926377E-3,null,0.13,null,{"$f":"AF62*AD63","v":302.04408259999997},null,{"$f":"AF63-Y63","v":1.1036999999999466},3.6675038107695504E-3,null,0.13,null,{"$f":"AM62*AK63","v":303.04248260000003},null,{"$f":"AM63-AF63","v":0.99840000000006057},3.3054777680324621E-3]
["Total Bill (including HST)",null,null,null,null,null,{"$f":"G62+G63","v":2514.7057968000004},null,null,null,{"$f":"K62+K63","v":2507.5672025999997},null,-7.1385942000006253,-2.8387393106122354E-3,null,null,null,{"$f":"R62+R63","v":2608.6909025999998},null,101.1237000000001,4.0327413716030755E-2,null,null,null,{"$f":"Y62+Y63","v":2615.8664025999997},null,7.175499999999829,2.7506133412924598E-3,null,null,null,{"$f":"AF62+AF63","v":2625.4601025999996},null,9.5936999999998989,3.66750381076969E-3,null,null,null,{"$f":"AM62+AM63","v":2634.1385025999998},null,8.6784000000002379,3.3054777680323524E-3]
["Ontario Clean Energy Benefit 1",null,null,null,null,null,{"$f":"ROUND(-G64*10%,2)","v":-251.47},null,null,null,null,null,251.47,-1,null,null,null,null,null,0,"",null,null,null,null,null,0,"",null,null,null,null,null,0,"",null,null,null,null,null,0,""]
["Total Bill on TOU (including OCEB)",null,null,null,null,null,{"$f":"G64+G65","v":2263.2357968000006},null,null,null,{"$f":"K64+K65","v":2507.5672025999997},null,244.33140579999917,0.10795667254179192,null,null,null,{"$f":"R64+R65","v":2608.6909025999998},null,101.1237000000001,4.0327413716030755E-2,null,null,null,{"$f":"Y64+Y65","v":2615.8664025999997},null,7.175499999999829,2.7506133412924598E-3,null,null,null,{"$f":"AF64+AF65","v":2625.4601025999996},null,9.5936999999998989,3.66750381076969E-3,null,null,null,{"$f":"AM64+AM65","v":2634.1385025999998},null,8.6784000000002379,3.3054777680323524E-3]
[null,null,null,null,null,null,null,null,null,null,null,null,null,null,null,null,null,null,null,null,"",null,null,null,null,null,null,"",null,null,null,null,null,null,"",null,null,null,null,null,null,""]
["Total Bill on RPP (before Taxes)",null,null,null,null,null,{"$f":"SUM(G60:G61,G51,G52:G55)","v":2280.9033599999998},null,null,null,{"$f":"SUM(K60:K61,K51,K52:K55)","v":2274.5860199999997},null,{"$f":"K68-G68","v":-6.3173400000000584},{"$f":"IF((G68)=0,\"\",(M68/G68))","v":-2.769665787155515E-3},null,null,null,{"$f":"SUM(R60:R61,R51,R52:R55)","v":2364.07602},null,{"$f":"R68-K68","v":89.490000000000236},3.9343423028688207E-2,null,null,null,{"$f":"SUM(Y60:Y61,Y51,Y52:Y55)","v":2370.4260199999999},null,{"$f":"Y68-R68","v":6.3499999999999091},2.6860388355869828E-3,null,null,null,{"$f":"SUM(AF60:AF61,AF51,AF52:AF55)","v":2378.9160200000001},null,{"$f":"AF68-Y68","v":8.4900000000002365},3.5816346632915534E-3,null,null,null,{"$f":"SUM(AM60:AM61,AM51,AM52:AM55)","v":2386.59602},null,{"$f":"AM68-AF68","v":7.6799999999998363},3.228361125585188E-3]
["HST",null,null,null,0.13,null,{"$f":"G68*E69","v":296.51743679999998},null,0.13,null,{"$f":"K68*I69","v":295.69618259999999},null,-0.82125419999999849,{"$f":"IF((G69)=0,\"\",(M69/G69))","v":-2.7696657871554842E-3},null,0.13,null,{"$f":"R68*P69","v":307.32988260000002},null,{"$f":"R69-K69","v":11.633700000000033},3.9343423028688207E-2,null,0.13,null,{"$f":"Y68*W69","v":308.1553826},null,{"$f":"Y69-R69","v":0.82549999999997681},2.686038835586946E-3,null,0.13,null,{"$f":"AF68*AD69","v":309.2590826},null,{"$f":"AF69-Y69","v":1.1037000000000035},3.5816346632914645E-3,null,0.13,null,{"$f":"AM68*AK69","v":310.2574826},null,{"$f":"AM69-AF69","v":0.99840000000000373},3.2283611255852691E-3]
["Total Bill (including HST)",null,null,null,null,null,{"$f":"G68+G69","v":2577.4207967999996},null,null,null,{"$f":"K68+K69","v":2570.2822025999999},null,-7.1385941999997158,-2.7696657871553792E-3,null,null,null,{"$f":"R68+R69","v":2671.4059026},null,101.1237000000001,3.9343423028688138E-2,null,null,null,{"$f":"Y68+Y69","v":2678.5814025999998},null,7.175499999999829,2.6860388355869572E-3,null,null,null,{"$f":"AF68+AF69","v":2688.1751026000002},null,9.5937000000003536,3.5816346632915855E-3,null,null,null,{"$f":"AM68+AM69","v":2696.8535026},null,8.6783999999997832,3.2283611255851763E-3]
["Ontario Clean Energy Benefit 1",null,null,null,null,null,{"$f":"ROUND(-G70*10%,2)","v":-257.74},null,null,null,null,null,257.74,-1,null,null,null,null,null,0,"",null,null,null,null,null,0,"",null,null,null,null,null,0,"",null,null,null,null,null,0,""]
["Total Bill on RPP (including OCEB)",null,null,null,null,null,{"$f":"SUM(G70:G71)","v":2319.6807967999994},null,null,null,{"$f":"SUM(K70:K71)","v":2570.2822025999999},null,250.60140580000052,0.10803271128756391,null,null,null,{"$f":"SUM(R70:R71)","v":2671.4059026},null,101.1237000000001,3.9343423028688138E-2,null,null,null,{"$f":"SUM(Y70:Y71)","v":2678.5814025999998},null,7.175499999999829,2.6860388355869572E-3,null,null,null,{"$f":"SUM(AF70:AF71)","v":2688.1751026000002},null,9.5937000000003536,3.5816346632915855E-3,null,null,null,{"$f":"SUM(AM70:AM71)","v":2696.8535026},null,8.6783999999997832,3.2283611255851763E-3]
[]
[]
["Loss Factor (%)",null,null,null,3.44E-2,null,null,null,3.9300000000000002E-2,null,null,null,null,null,null,3.9300000000000002E-2,null,null,null,null,null,null,3.9300000000000002E-2,null,null,null,null,null,null,3.9300000000000002E-2,null,null,null,null,null,null,3.9300000000000002E-2]
[]
["Distribution Excluding Rate Riders",null,null,null,"2015 Current Board-Approved",null,null,null,"2016 Test Year 1\nProposed",null,null,null,"Impact\n2016 TEST vs. \n2015 Bridge",null,null,"2017 Test Year 2\nProposed",null,null,null,"Impact\n2017 TEST 2 vs. \n2016 Test 1",null,null,"2018 Test Year 3\nProposed",null,null,null,"Impact\n2018 TEST 3 vs. \n2017 Test 2",null,null,"2019 Test Year 4\nProposed",null,null,null,"Impact\n2019 TEST 4 vs. \n2018 Test 3",null,null,"2020 Test Year 5 \nProposed",null,null,null,"Impact\n2020 TEST 5 vs. \n2019 Test 4"]
[null,null,"Charge Unit",null,"Rate","Volume","Charge",null,"Rate","Volume","Charge",null,"$ Change","% Change",null,"Rate","Volume","Charge",null,"$ Change","% Change",null,"Rate","Volume","Charge",null,"$ Change","% Change",null,"Rate","Volume","Charge",null,"$ Change","% Change",null,"Rate","Volume","Charge",null,"$ Change","% Change"]
[null,null,null,null,"($)",null,"($)",null,"($)",null,"($)",null,null,null,null,"($)",null,"($)",null,null,null,null,"($)",null,"($)",null,null,null,null,"($)",null,"($)",null,null,null,null,"($)",null,"($)"]
["Monthly Service Charge",null,"Monthly",null,25.85,1,{"$f":"F80*E80","v":25.85},null,{"$f":"'Rates Summary'!$E$29","v":14.27},1,{"$f":"J80*I80","v":14.27},null,{"$f":"K80-G80","v":-11.580000000000002},{"$f":"IF((G80)=0,\"\",(M80/G80))","v":-0.44796905222437144},null,{"$f":"'Rates Summary'!$F$29","v":14.59},1,{"$f":"Q80*P80","v":14.59},null,{"$f":"R80-K80","v":0.32000000000000028},{"$f":"IF((K80)=0,\"\",(T80/K80))","v":2.2424667133847252E-2},null,{"$f":"'Rates Summary'!$G$29","v":14.94},1,{"$f":"X80*W80","v":14.94},null,{"$f":"Y80-R80","v":0.34999999999999964},{"$f":"IF((R80)=0,\"\",(AA80/R80))","v":2.3989033584646994E-2},null,{"$f":"'Rates Summary'!$H$29","v":15.22},1,{"$f":"AE80*AD80","v":15.22},null,{"$f":"AF80-Y80","v":0.28000000000000114},{"$f":"IF((Y80)=0,\"\",(AH80/Y80))","v":1.8741633199464602E-2},null,{"$f":"'Rates Summary'!$I$29","v":15.4},1,{"$f":"AL80*AK80","v":15.4},null,{"$f":"AM80-AF80","v":0.17999999999999972},{"$f":"IF((AF80)=0,\"\",(AO80/AF80))","v":1.1826544021024949E-2}]
["Distribution Volumetric Rate",null,"per kWh",null,1.06E-2,{"$f":"$E$18","v":15000},{"$f":"F81*E81","v":159},null,{"$f":"'Rates Summary'!$E$41","v":1.46E-2},{"$f":"$E$18","v":15000},219,null,60,{"$f":"IF((G81)=0,\"\",(M81/G81))","v":0.37735849056603776},null,{"$f":"'Rates Summary'!$F$41","v":1.5100000000000001E-2},{"$f":"$E$18","v":15000},226.5,null,7.5,{"$f":"IF((K81)=0,\"\",(T81/K81))","v":3.4246575342465752E-2},null,{"$f":"'Rates Summary'!$G$41","v":1.55E-2},{"$f":"$E$18","v":15000},232.5,null,6,{"$f":"IF((R81)=0,\"\",(AA81/R81))","v":2.6490066225165563E-2},null,{"$f":"'Rates Summary'!$H$41","v":1.61E-2},{"$f":"$E$18","v":15000},241.5,null,9,{"$f":"IF((Y81)=0,\"\",(AH81/Y81))","v":3.870967741935484E-2},null,{"$f":"'Rates Summary'!$I$41","v":1.66E-2},{"$f":"$E$18","v":15000},249,null,7.5,{"$f":"IF((AF81)=0,\"\",(AO81/AF81))","v":3.1055900621118012E-2}]
["\"Regular\" Distribution Only",null,null,null,null,null,{"$f":"SUM(G79:G81)","v":184.85},null,null,null,{"$f":"SUM(K79:K81)","v":233.27},null,48.420000000000016,0.26194211522856381,null,null,null,{"$f":"SUM(R79:R81)","v":241.09},null,7.8199999999999932,3.3523384918763631E-2,null,null,null,{"$f":"SUM(Y79:Y81)","v":247.44},null,6.3499999999999943,2.6338711684433174E-2,null,null,null,{"$f":"SUM(AF79:AF81)","v":256.72000000000003},null,9.2800000000000296,3.750404138376992E-2,null,null,null,{"$f":"SUM(AM79:AM81)","v":264.39999999999998},null,7.67999999999995,2.9915861639139722E-2]
[]
[]
[null,"Residential (kWh) - 100, 250, 500, 800, 1000, 1500, 2000"]
[null,"GS<50kW (kWh) - 1000, 2000, 5000, 10000, 15000"]
[null,"GS>50kW (kW) - 60, 100, 500, 1000"]
[null,"Large User - range appropriate for utility"]
[null,"Lighting Classes and USL - 150 kWh and 1 kW, range appropriate for utility."]
[]
[null,null,"Note that cells with the highlighted color shown to the left indicate quantities that are loss adjusted."]

{"sheet":"Bill Impact GS50-4999 60kW","index":15,"n_rows":91,"n_cols":42,"rows_kept":91,"cut":false,"hidden":false,"merged":[[76,40,76,41],[76,22,76,24],[76,26,76,27],[76,29,76,31],[76,33,76,34],[76,36,76,38],[76,4,76,6],[76,8,76,10],[76,12,76,13],[76,15,76,17],[76,19,76,20],[65,0,65,2],[70,0,70,2],[71,0,71,2],[20,27,21,27],[20,33,21,33],[20,34,21,34],[20,40,21,40],[20,41,21,41],[64,0,64,2],[20,2,21,2],[20,12,21,12],[20,13,21,13],[20,19,21,19],[20,20,21,20],[20,26,21,26],[19,40,19,41],[2,0,2,9],[9,0,9,13],[10,0,10,13],[13,2,13,13],[13,15,13,26],[19,4,19,6],[19,8,19,10],[19,12,19,13],[19,15,19,17],[19,19,19,20],[19,22,19,24],[19,26,19,27],[19,29,19,31],[19,33,19,34],[19,36,19,38],[77,2,78,2],[77,12,78,12],[77,13,78,13],[77,19,78,19],[77,20,78,20],[77,41,78,41],[77,26,78,26],[77,27,78,27],[77,33,78,33],[77,34,78,34],[77,40,78,40]]}
[null,null,null,null,null,null,null,null,null,null,null,null,"File Number:",{"$f":"EBNUMBER","v":"EB-2015-0083"},null,null,null,null,1]
[null,null,null,null,null,null,null,null,null,null,null,null,"Exhibit:",{"$f":"'Bill Impact Resi 204kWh'!$N$2","v":8}]
[null,null,null,null,null,null,null,null,null,null,null,null,"Tab:",{"$f":"'Bill Impact Resi 204kWh'!$N$3","v":4}]
[null,null,null,null,null,null,null,null,null,null,null,null,"Schedule:",{"$f":"'Bill Impact Resi 204kWh'!$N$4","v":3}]
[null,null,null,null,null,null,null,null,null,null,null,null,"Page:"]
[]
[null,null,null,null,null,null,null,null,null,null,null,null,"Date:",{"$f":"'Bill Impact Resi 204kWh'!$N$7","v":"Settlement"}]
[]
[]
["Appendix 2-W"]
["Bill Impacts"]
[]
[]
["Customer Class:",null,"General Service 50 to 4,999 kW",null,null,null,null,null,null,null,null,null,null,null,null,{"$f":"C14","v":"General Service 50 to 4,999 kW"},null,null,null,null,null,null,null,null,null,null,null,null,null,null,null,null,null,null,null,null,{"$f":"P14","v":"General Service 50 to 4,999 kW"}]
[]
["TOU / non-TOU:",null,"TOU"]
[]
[null,null,"Consumption",null,40000," kWh"]
[null,null,"Load",null,60,"kW"]
[null,null,null,null,"2015 Current Board-Approved",null,null,null,"2016 Test Year 1\nProposed",null,null,null,"Impact\n2016 TEST vs. \n2015 Bridge",null,null,"2017 Test Year 2\nProposed",null,null,null,"Impact\n2017 TEST 2 vs. \n2016 Test 1",null,null,"2018 Test Year 3\nProposed",null,null,null,"Impact\n2018 TEST 3 vs. \n2017 Test 2",null,null,"2019 Test Year 4\nProposed",null,null,null,"Impact\n2019 TEST 4 vs. \n2018 Test 3",null,null,"2020 Test Year 5 \nProposed",null,null,null,"Impact\n2019 TEST 5 vs. \n2019 Test 4"]
[null,null,"Charge Unit",null,"Rate","Volume","Charge",null,"Rate","Volume","Charge",null,"$ Change","% Change",null,"Rate","Volume","Charge",null,"$ Change","% Change",null,"Rate","Volume","Charge",null,"$ Change","% Change",null,"Rate","Volume","Charge",null,"$ Change","% Change",null,"Rate","Volume","Charge",null,"$ Change","% Change"]
[null,null,null,null,"($)",null,"($)",null,"($)",null,"($)",null,null,null,null,"($)",null,"($)",null,null,null,null,"($)",null,"($)",null,null,null,null,"($)",null,"($)",null,null,null,null,"($)",null,"($)"]
["Monthly Service Charge",null,"Monthly",null,{"$f":"'Rates Summary'!$D$30","v":280.08999999999997},1,{"$f":"F23*E23","v":280.08999999999997},null,{"$f":"'Rates Summary'!$E$30","v":105.62},1,{"$f":"J23*I23","v":105.62},null,{"$f":"K23-G23","v":-174.46999999999997},{"$f":"IF((G23)=0,\"\",(M23/G23))","v":-0.62290692277482229},null,{"$f":"'Rates Summary'!$F$30","v":107.49},1,{"$f":"Q23*P23","v":107.49},null,{"$f":"R23-K23","v":1.8699999999999903},{"$f":"IF((K23)=0,\"\",(T23/K23))","v":1.7704980117401913E-2},null,{"$f":"'Rates Summary'!$G$30","v":109.29},1,{"$f":"X23*W23","v":109.29},null,{"$f":"Y23-R23","v":1.8000000000000114},{"$f":"IF((R23)=0,\"\",(AA23/R23))","v":1.6745743790120119E-2},null,{"$f":"'Rates Summary'!$H$30","v":110.99},1,{"$f":"AE23*AD23","v":110.99},null,{"$f":"AF23-Y23","v":1.6999999999999886},{"$f":"IF((Y23)=0,\"\",(AH23/Y23))","v":1.5554945557690443E-2},null,{"$f":"'Rates Summary'!$I$30","v":112.13},1,{"$f":"AL23*AK23","v":112.13},null,{"$f":"AM23-AF23","v":1.1400000000000006},{"$f":"IF((AF23)=0,\"\",(AO23/AF23))","v":1.0271195603207502E-2}]
["Smart Meter (SMIRR) Rate Rider",null,"Monthly",null,0,1,{"$f":"F24*E24","v":0},null,0,1,{"$f":"J24*I24","v":0},null,{"$f":"K24-G24","v":0},{"$f":"IF((G24)=0,\"\",(M24/G24))","v":""},null,0,1,{"$f":"Q24*P24","v":0},null,0,{"$f":"IF((K24)=0,\"\",(T24/K24))","v":""},null,0,1,{"$f":"X24*W24","v":0},null,0,{"$f":"IF((R24)=0,\"\",(AA24/R24))","v":""},null,0,1,{"$f":"AE24*AD24","v":0},null,0,{"$f":"IF((Y24)=0,\"\",(AH24/Y24))","v":""},null,0,1,{"$f":"AL24*AK24","v":0},null,0,{"$f":"IF((AF24)=0,\"\",(AO24/AF24))","v":""}]
["Rate Rider Smart Meters Capital (2016)",null,"Monthly",null,0,1,0,null,0,1,{"$f":"J25*I25","v":0},null,{"$f":"K25-G25","v":0},"",null,0,1,{"$f":"Q25*P25","v":0},null,0,"",null,0,1,{"$f":"X25*W25","v":0},null,0,"",null,0,1,{"$f":"AE25*AD25","v":0},null,0,"",null,0,1,{"$f":"AL25*AK25","v":0},null,0,""]
["Rate Rider Recovery of Stranded Meters",null,"Monthly",null,0,1,0,null,0,1,0,null,0,"",null,0,1,0,null,0,"",null,0,1,0,null,0,"",null,0,1,0,null,0,"",null,0,1,0,null,0,""]
[null,null,null,null,null,1,0,null,null,1,0,null,0,"",null,null,1,0,null,0,"",null,null,1,0,null,0,"",null,null,1,0,null,0,"",null,null,1,0,null,0,""]
[null,null,null,null,null,1,0,null,null,1,0,null,0,"",null,null,1,0,null,0,"",null,null,1,0,null,0,"",null,null,1,0,null,0,"",null,null,1,0,null,0,""]
["Distribution Volumetric Rate",null,"per kW",null,{"$f":"'Rates Summary'!$D$42","v":2.0063},{"$f":"$E$19","v":60},120.378,null,{"$f":"'Rates Summary'!$E$42","v":2.9849000000000001},{"$f":"$E$19","v":60},179.09399999999999,null,58.715999999999994,0.48776354483377354,null,{"$f":"'Rates Summary'!$F$42","v":3.101},{"$f":"$E$19","v":60},186.06,null,6.9660000000000082,3.8895775402861113E-2,null,{"$f":"'Rates Summary'!$G$42","v":3.2130000000000001},{"$f":"$E$19","v":60},192.78,null,6.7199999999999989,3.6117381489841976E-2,null,{"$f":"'Rates Summary'!$H$42","v":3.3260999999999998},{"$f":"$E$19","v":60},199.566,null,6.7860000000000014,3.5200746965452855E-2,null,{"$f":"'Rates Summary'!$I$42","v":3.4096000000000002},{"$f":"$E$19","v":60},204.57600000000002,null,5.0100000000000193,2.5104476714470497E-2]
["Rate Rider Tax Change (2015)",null,"per kW",null,-9.9000000000000008E-3,{"$f":"$E$19","v":60},-0.59400000000000008,null,0,{"$f":"$E$19","v":60},0,null,0.59400000000000008,-1,null,0,{"$f":"$E$19","v":60},0,null,0,"",null,0,{"$f":"$E$19","v":60},0,null,0,"",null,0,{"$f":"$E$19","v":60},0,null,0,"",null,0,{"$f":"$E$19","v":60},0,null,0,""]
["LRAM VA (2016)",null,"per kW",null,0,60,0,null,{"$f":"'Rates Summary'!E7","v":2.93E-2},60,1.758,null,1.758,1,null,0,60,0,null,-1.758,-1,null,0,60,0,null,0,"",null,0,60,0,null,0,"",null,0,60,0,null,0,""]
["Rate Rider Incremental Capital 2012 True-Up (2016)",null,"per kW",null,0,60,0,null,{"$f":"'Rates Summary'!E9","v":0.04},60,2.4,null,2.4,1,null,0,60,0,null,-2.4,-1,null,0,60,0,null,0,"",null,0,60,0,null,0,"",null,0,60,0,null,0,""]
[null,null,null,null,null,60,{"$f":"F33*E33","v":0},null,null,60,{"$f":"J33*I33","v":0},null,{"$f":"K33-G33","v":0},{"$f":"IF((G33)=0,\"\",(M33/G33))","v":""},null,null,60,{"$f":"Q33*P33","v":0},null,{"$f":"R33-K33","v":0},{"$f":"IF((K33)=0,\"\",(T33/K33))","v":""},null,null,60,{"$f":"X33*W33","v":0},null,{"$f":"Y33-R33","v":0},{"$f":"IF((R33)=0,\"\",(AA33/R33))","v":""},null,null,60,{"$f":"AE33*AD33","v":0},null,{"$f":"AF33-Y33","v":0},{"$f":"IF((Y33)=0,\"\",(AH33/Y33))","v":""},null,null,60,{"$f":"AL33*AK33","v":0},null,{"$f":"AM33-AF33","v":0},{"$f":"IF((AF33)=0,\"\",(AO33/AF33))","v":""}]
[null,null,null,null,null,60,0,null,null,60,0,null,0,"",null,null,60,0,null,0,"",null,null,60,0,null,0,"",null,null,60,0,null,0,"",null,null,60,0,null,0,""]
[null,null,null,null,null,60,0,null,null,60,0,null,0,"",null,null,60,0,null,0,"",null,null,60,0,null,0,"",null,null,60,0,null,0,"",null,null,60,0,null,0,""]
[null,null,null,null,null,60,0,null,null,60,0,null,0,"",null,null,60,0,null,0,"",null,null,60,0,null,0,"",null,null,60,0,null,0,"",null,null,60,0,null,0,""]
[null,null,null,null,null,60,0,null,null,60,0,null,0,"",null,null,60,0,null,0,"",null,null,60,0,null,0,"",null,null,60,0,null,0,"",null,null,60,0,null,0,""]
[null,null,null,null,null,60,0,null,null,60,0,null,0,"",null,null,60,0,null,0,"",null,null,60,0,null,0,"",null,null,60,0,null,0,"",null,null,60,0,null,0,""]
["Sub-Total A (excluding pass through)",null,null,null,null,null,{"$f":"SUM(G23:G38)","v":399.87399999999997},null,null,null,{"$f":"SUM(K23:K38)","v":288.87199999999996},null,-111.00200000000001,-0.27759244161911006,null,null,null,{"$f":"SUM(R23:R38)","v":293.55},null,4.6780000000000541,1.619402365061361E-2,null,null,null,{"$f":"SUM(Y23:Y38)","v":302.07},null,8.5199999999999818,2.9024016351558445E-2,null,null,null,{"$f":"SUM(AF23:AF38)","v":310.55599999999998},null,8.48599999999999,2.8092826166120403E-2,null,null,null,{"$f":"SUM(AM23:AM38)","v":316.70600000000002},null,6.1500000000000341,1.9803191694895719E-2]
["Deferral/Variance Account Disposition Rate Rider (2016)",null,"per kW",null,0,60,{"$f":"F40*E40","v":0},null,{"$f":"'Rates Summary'!E5","v":0.70479999999999998},60,{"$f":"J40*I40","v":42.287999999999997},null,{"$f":"K40-G40","v":42.287999999999997},1,null,0,60,{"$f":"Q40*P40","v":0},null,-42.287999999999997,-1,null,0,60,{"$f":"X40*W40","v":0},null,0,"",null,0,60,{"$f":"AE40*AD40","v":0},null,0,"",null,0,60,{"$f":"AL40*AK40","v":0},null,0,""]
["Deferral/Variance Account Disposition Rate Rider (2016), excluding Wholesale Market Participants",null,"per kW",null,0,60,{"$f":"F41*E41","v":0},null,{"$f":"'Rates Summary'!J5","v":-1.0947},60,{"$f":"J41*I41","v":-65.682000000000002},null,{"$f":"K41-G41","v":-65.682000000000002},1,null,0,60,{"$f":"Q41*P41","v":0},null,{"$f":"R41-K41","v":65.682000000000002},-1,null,0,60,{"$f":"X41*W41","v":0},null,{"$f":"Y41-R41","v":0},"",null,0,60,{"$f":"AE41*AD41","v":0},null,{"$f":"AF41-Y41","v":0},"",null,0,60,{"$f":"AL41*AK41","v":0},null,{"$f":"AM41-AF41","v":0},""]
["Rate Rider CGAAP Account 1576 (2016)",null,"per kW",null,0,60,0,null,{"$f":"'Rates Summary'!$E$8","v":-1.0874999999999999},60,-65.25,null,-65.25,1,null,0,60,0,null,65.25,-1,null,0,60,0,null,0,"",null,0,60,0,null,0,"",null,0,60,0,null,0,""]
["Disposition of Global Adjustment (2015)  \nApplicable to Non-RPP Customers, excluding Wholesale Market Participants",null,"per kW",null,5.7342000000000004,60,{"$f":"F43*E43","v":344.05200000000002},null,0,60,{"$f":"J43*I43","v":0},null,{"$f":"K43-G43","v":-344.05200000000002},-1,null,0,60,{"$f":"Q43*P43","v":0},null,0,"",null,0,60,{"$f":"X43*W43","v":0},null,0,"",null,0,60,{"$f":"AE43*AD43","v":0},null,0,"",null,0,60,{"$f":"AL43*AK43","v":0},null,0,""]
["Disposition of Global Adjustment (2016)\nApplicable to Non-RPP Customers, excluding Wholesale Market Participants",null,"per kW",null,0,60,0,null,{"$f":"'Rates Summary'!J6","v":7.4691999999999998},60,448.15199999999999,null,448.15199999999999,"",null,0,60,0,null,-448.15199999999999,-1,null,0,60,0,null,0,"",null,0,60,0,null,0,"",null,0,60,0,null,0,""]
["Low Voltage Service Charge",null,"per kW",null,0.252,60,{"$f":"F45*E45","v":15.120000000000001},null,{"$f":"'Rates Summary'!E15","v":0.46629999999999999},60,{"$f":"J45*I45","v":27.977999999999998},null,{"$f":"K45-G45","v":12.857999999999997},0.85039682539682515,null,{"$f":"I45","v":0.46629999999999999},60,{"$f":"Q45*P45","v":27.977999999999998},null,{"$f":"R45-K45","v":0},0,null,{"$f":"P45","v":0.46629999999999999},60,{"$f":"X45*W45","v":27.977999999999998},null,{"$f":"Y45-R45","v":0},0,null,{"$f":"W45","v":0.46629999999999999},60,{"$f":"AE45*AD45","v":27.977999999999998},null,{"$f":"AF45-Y45","v":0},0,null,{"$f":"AD45","v":0.46629999999999999},60,{"$f":"AL45*AK45","v":27.977999999999998},null,{"$f":"AM45-AF45","v":0},0]
["Line Losses on Cost of Power",null,"per kWh",null,{"$f":"IF(ISBLANK(C16)=TRUE, 0, IF(C16=\"TOU\", 0.64*$E$56+0.18*$E$57+0.18*$E$58, IF(AND(C16=\"non-TOU\", F60>0), E60,E59)))","v":0.10766000000000001},{"$f":"$E$18*(1+$E$75)-$E$18","v":1376},148.14016000000001,null,{"$f":"E46","v":0.10766000000000001},{"$f":"$E$18*(1+$I$75)-$E$18","v":1571.9999999999927},169.24151999999921,null,21.101359999999204,0.1424418604651109,null,{"$f":"I46","v":0.10766000000000001},{"$f":"$E$18*(1+$I$75)-$E$18","v":1571.9999999999927},{"$f":"Q46*P46","v":169.24151999999921},null,{"$f":"R46-K46","v":0},0,null,{"$f":"P46","v":0.10766000000000001},{"$f":"$E$18*(1+$I$75)-$E$18","v":1571.9999999999927},{"$f":"X46*W46","v":169.24151999999921},null,{"$f":"Y46-R46","v":0},0,null,{"$f":"W46","v":0.10766000000000001},{"$f":"$E$18*(1+$I$75)-$E$18","v":1571.9999999999927},{"$f":"AE46*AD46","v":169.24151999999921},null,{"$f":"AF46-Y46","v":0},0,null,{"$f":"AD46","v":0.10766000000000001},{"$f":"$E$18*(1+$I$75)-$E$18","v":1571.9999999999927},{"$f":"AL46*AK46","v":169.24151999999921},null,{"$f":"AM46-AF46","v":0},0]
["Smart Meter Entity Charge",null,null,null,0,1,{"$f":"F47*E47","v":0},null,{"$f":"E47","v":0},1,{"$f":"J47*I47","v":0},null,{"$f":"I47","v":0},"",null,{"$f":"M47","v":0},1,{"$f":"Q47*P47","v":0},null,{"$f":"R47-K47","v":0},"",null,{"$f":"P47","v":0},1,{"$f":"X47*W47","v":0},null,{"$f":"Y47-R47","v":0},"",null,{"$f":"W47","v":0},1,{"$f":"AE47*AD47","v":0},null,{"$f":"AF47-Y47","v":0},"",null,{"$f":"AD47","v":0},1,{"$f":"AL47*AK47","v":0},null,{"$f":"AM47-AF47","v":0},""]
["Sub-Total B - Distribution (includes Sub-Total A)",null,null,null,null,null,{"$f":"SUM(G40:G47)+G39","v":907.18615999999997},null,null,null,{"$f":"SUM(K40:K47)+K39","v":845.59951999999919},null,{"$f":"K48-G48","v":-61.586640000000784},-6.7887543610674991E-2,null,null,null,{"$f":"SUM(R40:R47)+R39","v":490.76951999999926},null,{"$f":"R48-K48","v":-354.82999999999993},-0.41961944349258884,null,null,null,{"$f":"SUM(Y40:Y47)+Y39","v":499.28951999999924},null,{"$f":"Y48-R48","v":8.5199999999999818},1.7360491336136756E-2,null,null,null,{"$f":"SUM(AF40:AF47)+AF39","v":507.77551999999923},null,{"$f":"AF48-Y48","v":8.48599999999999},1.6996150850512551E-2,null,null,null,{"$f":"SUM(AM40:AM47)+AM39","v":513.92551999999921},null,{"$f":"AM48-AF48","v":6.1499999999999773},1.2111651227298209E-2]
["RTSR - Network",null,"per kW",null,2.6313,{"$f":"$E$19","v":60},{"$f":"F49*E49","v":157.87799999999999},null,{"$f":"'Rates Summary'!E17","v":2.7797000000000001},{"$f":"$E$19","v":60},{"$f":"J49*I49","v":166.78200000000001},null,8.9040000000000248,5.6397978185687841E-2,null,{"$f":"I49","v":2.7797000000000001},{"$f":"$E$19","v":60},{"$f":"Q49*P49","v":166.78200000000001},null,0,0,null,{"$f":"P49","v":2.7797000000000001},{"$f":"$E$19","v":60},{"$f":"X49*W49","v":166.78200000000001},null,0,0,null,{"$f":"W49","v":2.7797000000000001},{"$f":"$E$19","v":60},{"$f":"AE49*AD49","v":166.78200000000001},null,0,0,null,{"$f":"AD49","v":2.7797000000000001},{"$f":"$E$19","v":60},{"$f":"AL49*AK49","v":166.78200000000001},null,0,0]
["RTSR - Line and Transformation Connection",null,"per kW",null,2.0127999999999999,60,{"$f":"F50*E50","v":120.768},null,{"$f":"'Rates Summary'!E18","v":2.2225000000000001},60,{"$f":"J50*I50","v":133.35000000000002},null,12.582000000000022,0.10418322734499223,null,{"$f":"I50","v":2.2225000000000001},60,{"$f":"Q50*P50","v":133.35000000000002},null,0,0,null,{"$f":"P50","v":2.2225000000000001},60,{"$f":"X50*W50","v":133.35000000000002},null,0,0,null,{"$f":"W50","v":2.2225000000000001},60,{"$f":"AE50*AD50","v":133.35000000000002},null,0,0,null,{"$f":"AD50","v":2.2225000000000001},60,{"$f":"AL50*AK50","v":133.35000000000002},null,0,0]
["Sub-Total C - Delivery (including Sub-Total B)",null,null,null,null,null,{"$f":"SUM(G48:G50)","v":1185.8321599999999},null,null,null,{"$f":"SUM(K48:K50)","v":1145.7315199999994},null,-40.100640000000567,-3.3816455104405813E-2,null,null,null,{"$f":"SUM(R48:R50)","v":790.90151999999932},null,-354.83000000000004,-0.30969733642310915,null,null,null,{"$f":"SUM(Y48:Y50)","v":799.4215199999993},null,8.5199999999999818,1.0772516912092911E-2,null,null,null,{"$f":"SUM(AF48:AF50)","v":807.90751999999929},null,8.48599999999999,1.0615175833645305E-2,null,null,null,{"$f":"SUM(AM48:AM50)","v":814.05751999999927},null,6.1499999999999773,7.6122574029264915E-3]
["Wholesale Market Service Charge (WMSC)",null,"per kWh",null,4.4000000000000003E-3,{"$f":"$E$18*(1+$E$75)","v":41376},{"$f":"F52*E52","v":182.05440000000002},null,{"$f":"E52","v":4.4000000000000003E-3},{"$f":"$E$18*(1+I75)","v":41571.999999999993},{"$f":"J52*I52","v":182.91679999999997},null,0.86239999999995121,4.7370456303168235E-3,null,{"$f":"I52","v":4.4000000000000003E-3},{"$f":"$E$18*(1+P75)","v":41571.999999999993},{"$f":"Q52*P52","v":182.91679999999997},null,0,0,null,{"$f":"P52","v":4.4000000000000003E-3},{"$f":"$E$18*(1+W75)","v":41571.999999999993},{"$f":"X52*W52","v":182.91679999999997},null,0,0,null,{"$f":"W52","v":4.4000000000000003E-3},{"$f":"$E$18*(1+AD75)","v":41571.999999999993},{"$f":"AE52*AD52","v":182.91679999999997},null,0,0,null,{"$f":"AD52","v":4.4000000000000003E-3},{"$f":"$E$18*(1+AK75)","v":41571.999999999993},{"$f":"AL52*AK52","v":182.91679999999997},null,0,0]
["Rural and Remote Rate Protection (RRRP)",null,"per kWh",null,1.2999999999999999E-3,{"$f":"$E$18*(1+$E$75)","v":41376},53.788799999999995,null,{"$f":"E53","v":1.2999999999999999E-3},{"$f":"$E$18*(1+I75)","v":41571.999999999993},54.043599999999991,null,0.25479999999999592,4.737045630317017E-3,null,{"$f":"I53","v":1.2999999999999999E-3},{"$f":"$E$18*(1+P75)","v":41571.999999999993},54.043599999999991,null,0,0,null,{"$f":"P53","v":1.2999999999999999E-3},{"$f":"$E$18*(1+W75)","v":41571.999999999993},54.043599999999991,null,0,0,null,{"$f":"W53","v":1.2999999999999999E-3},{"$f":"$E$18*(1+AD75)","v":41571.999999999993},54.043599999999991,null,0,0,null,{"$f":"AD53","v":1.2999999999999999E-3},{"$f":"$E$18*(1+AK75)","v":41571.999999999993},54.043599999999991,null,0,0]
["Standard Supply Service Charge",null,"Monthly",null,0.25,1,0.25,null,{"$f":"E54","v":0.25},1,0.25,null,0,0,null,{"$f":"I54","v":0.25},1,0.25,null,0,0,null,{"$f":"P54","v":0.25},1,0.25,null,0,0,null,{"$f":"W54","v":0.25},1,0.25,null,0,0,null,{"$f":"AD54","v":0.25},1,0.25,null,0,0]
["Debt Retirement Charge (DRC)",null,"per kWh",null,7.0000000000000001E-3,{"$f":"E18","v":40000},280,null,{"$f":"E55","v":7.0000000000000001E-3},{"$f":"E18","v":40000},280,null,0,0,null,{"$f":"I55","v":7.0000000000000001E-3},{"$f":"J55","v":40000},280,null,0,0,null,{"$f":"P55","v":7.0000000000000001E-3},{"$f":"Q55","v":40000},280,null,0,0,null,{"$f":"W55","v":7.0000000000000001E-3},{"$f":"X55","v":40000},280,null,0,0,null,{"$f":"AD55","v":7.0000000000000001E-3},{"$f":"AE55","v":40000},280,null,0,0]
["TOU - Off Peak",null,"per kWh",null,8.3000000000000004E-2,{"$f":"0.64*$E$18","v":25600},2124.8000000000002,null,{"$f":"E56","v":8.3000000000000004E-2},{"$f":"F56","v":25600},2124.8000000000002,null,0,0,null,{"$f":"I56","v":8.3000000000000004E-2},{"$f":"J56","v":25600},2124.8000000000002,null,0,0,null,{"$f":"P56","v":8.3000000000000004E-2},{"$f":"Q56","v":25600},2124.8000000000002,null,0,0,null,{"$f":"W56","v":8.3000000000000004E-2},{"$f":"X56","v":25600},2124.8000000000002,null,0,0,null,{"$f":"AD56","v":8.3000000000000004E-2},{"$f":"AE56","v":25600},2124.8000000000002,null,0,0]
["TOU - Mid Peak",null,"per kWh",null,0.128,{"$f":"0.18*$E$18","v":7200},921.6,null,{"$f":"E57","v":0.128},{"$f":"F57","v":7200},921.6,null,0,0,null,{"$f":"I57","v":0.128},7200,921.6,null,0,0,null,{"$f":"P57","v":0.128},7200,921.6,null,0,0,null,{"$f":"W57","v":0.128},7200,921.6,null,0,0,null,{"$f":"AD57","v":0.128},7200,921.6,null,0,0]
["TOU - On Peak",null,"per kWh",null,0.17499999999999999,{"$f":"0.18*$E$18","v":7200},1260,null,0.17499999999999999,{"$f":"F58","v":7200},1260,null,0,0,null,0.17499999999999999,7200,1260,null,0,0,null,0.17499999999999999,7200,1260,null,0,0,null,0.17499999999999999,7200,1260,null,0,0,null,0.17499999999999999,7200,1260,null,0,0]
["Energy - RPP - Tier 1",null,"per kWh",null,9.9000000000000005E-2,{"$f":"IF(AND($S$1=1, E18>=600), 600, IF(AND($S$1=1, AND(E18<600, E18>=0)), E18, IF(AND($S$1=2, E18>=1000), 1000, IF(AND($S$1=2, AND(E18<1000, E18>=0)), E18))))","v":600},{"$f":"F59*E59","v":59.400000000000006},null,9.9000000000000005E-2,{"$f":"F59","v":600},{"$f":"J59*I59","v":59.400000000000006},null,0,{"$f":"IF((G59)=0,\"\",(M59/G59))","v":0},null,9.9000000000000005E-2,600,{"$f":"Q59*P59","v":59.400000000000006},null,0,{"$f":"IF((K59)=0,\"\",(T59/K59))","v":0},null,9.9000000000000005E-2,600,{"$f":"X59*W59","v":59.400000000000006},null,0,{"$f":"IF((R59)=0,\"\",(AA59/R59))","v":0},null,9.9000000000000005E-2,600,{"$f":"AE59*AD59","v":59.400000000000006},null,0,{"$f":"IF((Y59)=0,\"\",(AH59/Y59))","v":0},null,9.9000000000000005E-2,600,{"$f":"AL59*AK59","v":59.400000000000006},null,0,{"$f":"IF((AF59)=0,\"\",(AO59/AF59))","v":0}]
["Energy - RPP - Tier 2",null,"per kWh",null,0.11600000000000001,{"$f":"IF(AND($S$1=1, E18>=600), E18-600, IF(AND($S$1=1, AND(E18<600, E18>=0)), 0, IF(AND($S$1=2, E18>=1000), E18-1000, IF(AND($S$1=2, AND(E18<1000, E18>=0)), 0))))","v":39400},{"$f":"F60*E60","v":4570.4000000000005},null,0.11600000000000001,{"$f":"F60","v":39400},{"$f":"J60*I60","v":4570.4000000000005},null,0,0,null,0.11600000000000001,39400,{"$f":"Q60*P60","v":4570.4000000000005},null,0,0,null,0.11600000000000001,39400,{"$f":"X60*W60","v":4570.4000000000005},null,0,0,null,0.11600000000000001,39400,{"$f":"AE60*AD60","v":4570.4000000000005},null,0,0,null,0.11600000000000001,39400,{"$f":"AL60*AK60","v":4570.4000000000005},null,0,0]
[null,null,null,null,null,null,null,null,null,null,null,null,null,null,null,null,null,null,null,null,"",null,null,null,null,null,null,"",null,null,null,null,null,null,"",null,null,null,null,null,null,""]
["Total Bill on TOU (before Taxes)",null,null,null,null,null,{"$f":"SUM(G52:G58,G51)","v":6008.3253600000007},null,null,null,{"$f":"SUM(K52:K58,K51)","v":5969.3419199999989},null,{"$f":"K62-G62","v":-38.983440000001792},{"$f":"IF((G62)=0,\"\",(M62/G62))","v":-6.4882371816165742E-3},null,null,null,{"$f":"SUM(R52:R58,R51)","v":5614.511919999999},null,{"$f":"R62-K62","v":-354.82999999999993},{"$f":"IF((K62)=0,\"\",(T62/K62))","v":-5.9442063255106682E-2},null,null,null,{"$f":"SUM(Y52:Y58,Y51)","v":5623.0319199999985},null,{"$f":"Y62-R62","v":8.5199999999995271},1.5174961103296631E-3,null,null,null,{"$f":"SUM(AF52:AF58,AF51)","v":5631.5179199999984},null,{"$f":"AF62-Y62","v":8.4859999999998763},1.5091502450514062E-3,null,null,null,{"$f":"SUM(AM52:AM58,AM51)","v":5637.667919999999},null,{"$f":"AM62-AF62","v":6.1500000000005457},1.09206790910834E-3]
["HST",null,null,null,0.13,null,{"$f":"G62*E63","v":781.08229680000011},null,0.13,null,{"$f":"K62*I63","v":776.01444959999992},null,-5.0678472000001875,-6.4882371816165161E-3,null,0.13,null,{"$f":"R62*P63","v":729.88654959999985},null,{"$f":"R63-K63","v":-46.127900000000068},{"$f":"IF((K63)=0,\"\",(T63/K63))","v":-5.9442063255106779E-2},null,0.13,null,{"$f":"Y62*W63","v":730.99414959999979},null,{"$f":"Y63-R63","v":1.107599999999934},1.517496110329657E-3,null,0.13,null,{"$f":"AF62*AD63","v":732.09732959999985},null,{"$f":"AF63-Y63","v":1.1031800000000658},1.509150245051518E-3,null,0.13,null,{"$f":"AM62*AK63","v":732.89682959999993},null,{"$f":"AM63-AF63","v":0.79950000000008004},1.0920679091083524E-3]
["Total Bill (including HST)",null,null,null,null,null,{"$f":"G62+G63","v":6789.407656800001},null,null,null,{"$f":"K62+K63","v":6745.3563695999992},null,-44.051287200001752,-6.4882371816165334E-3,null,null,null,{"$f":"R62+R63","v":6344.3984695999989},null,-400.95790000000034,-5.9442063255106745E-2,null,null,null,{"$f":"Y62+Y63","v":6354.0260695999987},null,9.6275999999998021,1.5174961103297162E-3,null,null,null,{"$f":"AF62+AF63","v":6363.6152495999986},null,9.5891799999999421,1.5091502450514189E-3,null,null,null,{"$f":"AM62+AM63","v":6370.5647495999992},null,6.9495000000006257,1.0920679091083413E-3]
["Ontario Clean Energy Benefit 1",null,null,null,null,null,null,null,null,null,null,null,0,"",null,null,null,null,null,0,"",null,null,null,null,null,0,"",null,null,null,null,null,0,"",null,null,null,null,null,0,""]
["Total Bill on TOU (including OCEB)",null,null,null,null,null,{"$f":"G64+G65","v":6789.407656800001},null,null,null,{"$f":"K64+K65","v":6745.3563695999992},null,-44.051287200001752,-6.4882371816165334E-3,null,null,null,{"$f":"R64+R65","v":6344.3984695999989},null,-400.95790000000034,{"$f":"IF((K66)=0,\"\",(T66/K66))","v":-5.9442063255106745E-2},null,null,null,{"$f":"Y64+Y65","v":6354.0260695999987},null,9.6275999999998021,{"$f":"IF((R66)=0,\"\",(AA66/R66))","v":1.5174961103297162E-3},null,null,null,{"$f":"AF64+AF65","v":6363.6152495999986},null,9.5891799999999421,{"$f":"IF((Y66)=0,\"\",(AH66/Y66))","v":1.5091502450514189E-3},null,null,null,{"$f":"AM64+AM65","v":6370.5647495999992},null,6.9495000000006257,{"$f":"IF((AF66)=0,\"\",(AO66/AF66))","v":1.0920679091083413E-3}]
[null,null,null,null,null,null,null,null,null,null,null,null,null,null,null,null,null,null,null,null,"",null,null,null,null,null,null,"",null,null,null,null,null,null,"",null,null,null,null,null,null,""]
["Total Bill on RPP (before Taxes)",null,null,null,null,null,{"$f":"SUM(G60:G61,G51,G52:G55)","v":6272.3253600000007},null,null,null,{"$f":"SUM(K60:K61,K51,K52:K55)","v":6233.3419199999998},null,{"$f":"K68-G68","v":-38.983440000000883},{"$f":"IF((G68)=0,\"\",(M68/G68))","v":-6.2151495278938906E-3},null,null,null,{"$f":"SUM(R60:R61,R51,R52:R55)","v":5878.5119199999999},null,{"$f":"R68-K68","v":-354.82999999999993},-5.6924520514671194E-2,null,null,null,{"$f":"SUM(Y60:Y61,Y51,Y52:Y55)","v":5887.0319199999994},null,{"$f":"SUM(AA60:AA61,AA51,AA52:AA55)","v":8.5199999999999818},1.4493463849266095E-3,null,null,null,{"$f":"SUM(AF60:AF61,AF51,AF52:AF55)","v":5895.5179200000002},null,{"$f":"AF68-Y68","v":8.4860000000007858},1.4414734139917465E-3,null,null,null,{"$f":"SUM(AM60:AM61,AM51,AM52:AM55)","v":5901.6679199999999},null,{"$f":"AM68-AF68","v":6.1499999999996362},1.0431653475492509E-3]
["HST",null,null,null,0.13,null,{"$f":"G68*E69","v":815.40229680000016},null,0.13,null,{"$f":"K68*I69","v":810.33444959999997},null,-5.0678472000001875,{"$f":"IF((G69)=0,\"\",(M69/G69))","v":-6.2151495278939791E-3},null,0.13,null,{"$f":"R68*P69","v":764.20654960000002},null,{"$f":"R69-K69","v":-46.127899999999954},-5.6924520514671152E-2,null,0.13,null,{"$f":"Y68*W69","v":765.31414959999995},null,{"$f":"Y69-R69","v":1.107599999999934},1.449346384926526E-3,null,0.13,null,{"$f":"AF68*AD69","v":766.41732960000002},null,{"$f":"AF69-Y69","v":1.1031800000000658},1.441473413991699E-3,null,0.13,null,{"$f":"AM68*AK69","v":767.21682959999998},null,{"$f":"AM69-AF69","v":0.79949999999996635},1.0431653475492686E-3]
["Total Bill (including HST)",null,null,null,null,null,{"$f":"G68+G69","v":7087.7276568000007},null,null,null,{"$f":"K68+K69","v":7043.6763695999998},null,-44.051287200000843,-6.2151495278938689E-3,null,null,null,{"$f":"R68+R69","v":6642.7184696000004},null,-400.95789999999943,-5.6924520514671124E-2,null,null,null,{"$f":"Y68+Y69","v":6652.3460695999993},null,9.6275999999988926,1.4493463849264458E-3,null,null,null,{"$f":"AF68+AF69","v":6661.9352496000001},null,9.5891800000008516,1.441473413991741E-3,null,null,null,{"$f":"AM68+AM69","v":6668.8847495999999},null,6.9494999999997162,1.0431653475492699E-3]
["Ontario Clean Energy Benefit 1",null,null,null,null,null,null,null,null,null,null,null,0,"",null,null,null,null,null,0,"",null,null,null,null,null,0,"",null,null,null,null,null,0,"",null,null,null,null,null,0,""]
["Total Bill on RPP (including OCEB)",null,null,null,null,null,{"$f":"SUM(G70:G71)","v":7087.7276568000007},null,null,null,{"$f":"SUM(K70:K71)","v":7043.6763695999998},null,-44.051287200000843,-6.2151495278938689E-3,null,null,null,{"$f":"SUM(R70:R71)","v":6642.7184696000004},null,-400.95789999999943,-5.6924520514671124E-2,null,null,null,{"$f":"SUM(Y70:Y71)","v":6652.3460695999993},null,9.6275999999988926,1.4493463849264458E-3,null,null,null,{"$f":"SUM(AF70:AF71)","v":6661.9352496000001},null,9.5891800000008516,1.441473413991741E-3,null,null,null,{"$f":"SUM(AM70:AM71)","v":6668.8847495999999},null,6.9494999999997162,1.0431653475492699E-3]
[]
[]
["Loss Factor (%)",null,null,null,3.44E-2,null,null,null,3.9300000000000002E-2,null,null,null,null,null,null,3.9300000000000002E-2,null,null,null,null,null,null,3.9300000000000002E-2,null,null,null,null,null,null,3.9300000000000002E-2,null,null,null,null,null,null,3.9300000000000002E-2]
[]
["Distribution Excluding Rate Riders",null,null,null,"2015 Current Board-Approved",null,null,null,"2016 Test Year 1\nProposed",null,null,null,"Impact\n2016 TEST vs. \n2015 Bridge",null,null,"2017 Test Year 2\nProposed",null,null,null,"Impact\n2017 TEST 2 vs. \n2016 Test 1",null,null,"2018 Test Year 3\nProposed",null,null,null,"Impact\n2018 TEST 3 vs. \n2017 Test 2",null,null,"2019 Test Year 4\nProposed",null,null,null,"Impact\n2019 TEST 4 vs. \n2018 Test 3",null,null,"2020 Test Year 5 \nProposed",null,null,null,"Impact\n2019 TEST 5 vs. \n2019 Test 4"]
[null,null,"Charge Unit",null,"Rate","Volume","Charge",null,"Rate","Volume","Charge",null,"$ Change","% Change",null,"Rate","Volume","Charge",null,"$ Change","% Change",null,"Rate","Volume","Charge",null,"$ Change","% Change",null,"Rate","Volume","Charge",null,"$ Change","% Change",null,"Rate","Volume","Charge",null,"$ Change","% Change"]
[null,null,null,null,"($)",null,"($)",null,"($)",null,"($)",null,null,null,null,"($)",null,"($)",null,null,null,null,"($)",null,"($)",null,null,null,null,"($)",null,"($)",null,null,null,null,"($)",null,"($)"]
["Monthly Service Charge",null,"Monthly",null,{"$f":"'Rates Summary'!$D$30","v":280.08999999999997},1,{"$f":"F80*E80","v":280.08999999999997},null,{"$f":"'Rates Summary'!$E$30","v":105.62},1,{"$f":"J80*I80","v":105.62},null,{"$f":"K80-G80","v":-174.46999999999997},{"$f":"IF((G80)=0,\"\",(M80/G80))","v":-0.62290692277482229},null,{"$f":"'Rates Summary'!$F$30","v":107.49},1,{"$f":"Q80*P80","v":107.49},null,{"$f":"R80-K80","v":1.8699999999999903},{"$f":"IF((K80)=0,\"\",(T80/K80))","v":1.7704980117401913E-2},null,{"$f":"'Rates Summary'!$G$30","v":109.29},1,{"$f":"X80*W80","v":109.29},null,{"$f":"Y80-R80","v":1.8000000000000114},{"$f":"IF((R80)=0,\"\",(AA80/R80))","v":1.6745743790120119E-2},null,{"$f":"'Rates Summary'!$H$30","v":110.99},1,{"$f":"AE80*AD80","v":110.99},null,{"$f":"AF80-Y80","v":1.6999999999999886},{"$f":"IF((Y80)=0,\"\",(AH80/Y80))","v":1.5554945557690443E-2},null,{"$f":"'Rates Summary'!$I$30","v":112.13},1,{"$f":"AL80*AK80","v":112.13},null,{"$f":"AM80-AF80","v":1.1400000000000006},{"$f":"IF((AF80)=0,\"\",(AO80/AF80))","v":1.0271195603207502E-2}]
["Distribution Volumetric Rate",null,"per kW",null,{"$f":"'Rates Summary'!$D$42","v":2.0063},{"$f":"$E$19","v":60},{"$f":"F81*E81","v":120.378},null,{"$f":"'Rates Summary'!$E$42","v":2.9849000000000001},{"$f":"$E$19","v":60},{"$f":"J81*I81","v":179.09399999999999},null,{"$f":"K81-G81","v":58.715999999999994},{"$f":"IF((G81)=0,\"\",(M81/G81))","v":0.48776354483377354},null,{"$f":"'Rates Summary'!$F$42","v":3.101},{"$f":"$E$19","v":60},{"$f":"Q81*P81","v":186.06},null,6.9660000000000082,{"$f":"IF((K81)=0,\"\",(T81/K81))","v":3.8895775402861113E-2},null,{"$f":"'Rates Summary'!$G$42","v":3.2130000000000001},{"$f":"$E$19","v":60},{"$f":"X81*W81","v":192.78},null,6.7199999999999989,{"$f":"IF((R81)=0,\"\",(AA81/R81))","v":3.6117381489841976E-2},null,{"$f":"'Rates Summary'!$H$42","v":3.3260999999999998},{"$f":"$E$19","v":60},{"$f":"AE81*AD81","v":199.566},null,6.7860000000000014,{"$f":"IF((Y81)=0,\"\",(AH81/Y81))","v":3.5200746965452855E-2},null,{"$f":"'Rates Summary'!$I$42","v":3.4096000000000002},{"$f":"$E$19","v":60},{"$f":"AL81*AK81","v":204.57600000000002},null,5.0100000000000193,{"$f":"IF((AF81)=0,\"\",(AO81/AF81))","v":2.5104476714470497E-2}]
["\"Regular\" Distribution Only",null,null,null,null,null,{"$f":"SUM(G80:G81)","v":400.46799999999996},null,null,null,{"$f":"SUM(K80:K81)","v":284.714},null,{"$f":"K82-G82","v":-115.75399999999996},{"$f":"IF((G82)=0,\"\",(M82/G82))","v":-0.28904681522618531},null,null,null,{"$f":"SUM(R80:R81)","v":293.55},null,{"$f":"R82-K82","v":8.8360000000000127},{"$f":"IF((K82)=0,\"\",(T82/K82))","v":3.103465231776454E-2},null,null,null,{"$f":"SUM(Y80:Y81)","v":302.07},null,{"$f":"Y82-R82","v":8.5199999999999818},{"$f":"IF((R82)=0,\"\",(AA82/R82))","v":2.9024016351558445E-2},null,null,null,{"$f":"SUM(AF80:AF81)","v":310.55599999999998},null,{"$f":"AF82-Y82","v":8.48599999999999},{"$f":"IF((Y82)=0,\"\",(AH82/Y82))","v":2.8092826166120403E-2},null,null,null,{"$f":"SUM(AM80:AM81)","v":316.70600000000002},null,{"$f":"AM82-AF82","v":6.1500000000000341},{"$f":"IF((AF82)=0,\"\",(AO82/AF82))","v":1.9803191694895719E-2}]
[]
[]
[null,"Residential (kWh) - 100, 250, 500, 800, 1000, 1500, 2000"]
[null,"GS<50kW (kWh) - 1000, 2000, 5000, 10000, 15000"]
[null,"GS>50kW (kW) - 60, 100, 500, 1000"]
[null,"Large User - range appropriate for utility"]
[null,"Lighting Classes and USL - 150 kWh and 1 kW, range appropriate for utility."]
[]
[null,null,"Note that cells with the highlighted color shown to the left indicate quantities that are loss adjusted."]

{"sheet":"Bill Impact GS50-4999 70kW","index":16,"n_rows":91,"n_cols":42,"rows_kept":91,"cut":false,"hidden":false,"merged":[[19,33,19,34],[19,36,19,38],[20,20,21,20],[20,26,21,26],[19,40,19,41],[19,22,19,24],[19,26,19,27],[19,29,19,31],[20,27,21,27],[20,33,21,33],[20,34,21,34],[20,40,21,40],[20,41,21,41],[2,0,2,9],[9,0,9,13],[10,0,10,13],[13,2,13,13],[13,15,13,26],[19,4,19,6],[19,8,19,10],[19,12,19,13],[19,15,19,17],[19,19,19,20],[64,0,64,2],[20,2,21,2],[20,12,21,12],[20,13,21,13],[20,19,21,19],[76,29,76,31],[76,33,76,34],[77,34,78,34],[65,0,65,2],[70,0,70,2],[71,0,71,2],[76,4,76,6],[76,8,76,10],[76,12,76,13],[77,40,78,40],[77,41,78,41],[76,36,76,38],[76,40,76,41],[77,2,78,2],[77,12,78,12],[77,13,78,13],[77,19,78,19],[77,20,78,20],[77,26,78,26],[77,27,78,27],[77,33,78,33],[76,15,76,17],[76,19,76,20],[76,22,76,24],[76,26,76,27]]}
[null,null,null,null,null,null,null,null,null,null,null,null,"File Number:",{"$f":"EBNUMBER","v":"EB-2015-0083"},null,null,null,null,1]
[null,null,null,null,null,null,null,null,null,null,null,null,"Exhibit:",{"$f":"'Bill Impact Resi 204kWh'!$N$2","v":8}]
[null,null,null,null,null,null,null,null,null,null,null,null,"Tab:",{"$f":"'Bill Impact Resi 204kWh'!$N$3","v":4}]
[null,null,null,null,null,null,null,null,null,null,null,null,"Schedule:",{"$f":"'Bill Impact Resi 204kWh'!$N$4","v":3}]
[null,null,null,null,null,null,null,null,null,null,null,null,"Page:"]
[]
[null,null,null,null,null,null,null,null,null,null,null,null,"Date:",{"$f":"'Bill Impact Resi 204kWh'!$N$7","v":"Settlement"}]
[]
[]
["Appendix 2-W"]
["Bill Impacts"]
[]
[]
["Customer Class:",null,"General Service 50 to 4,999 kW",null,null,null,null,null,null,null,null,null,null,null,null,{"$f":"C14","v":"General Service 50 to 4,999 kW"},null,null,null,null,null,null,null,null,null,null,null,null,null,null,null,null,null,null,null,null,{"$f":"P14","v":"General Service 50 to 4,999 kW"}]
[]
["TOU / non-TOU:",null,"TOU"]
[]
[null,null,"Consumption",null,100000," kWh"]
[null,null,"Load",null,70,"kW"]
[null,null,null,null,"2015 Current Board-Approved",null,null,null,"2016 Test Year 1\nProposed",null,null,null,"Impact\n2016 TEST vs. \n2015 Bridge",null,null,"2017 Test Year 2\nProposed",null,null,null,"Impact\n2017 TEST 2 vs. \n2016 Test 1",null,null,"2018 Test Year 3\nProposed",null,null,null,"Impact\n2018 TEST 3 vs. \n2017 Test 2",null,null,"2019 Test Year 4\nProposed",null,null,null,"Impact\n2019 TEST 4 vs. \n2018 Test 3",null,null,"2020 Test Year 5 \nProposed",null,null,null,"Impact\n2019 TEST 5 vs. \n2019 Test 4"]
[null,null,"Charge Unit",null,"Rate","Volume","Charge",null,"Rate","Volume","Charge",null,"$ Change","% Change",null,"Rate","Volume","Charge",null,"$ Change","% Change",null,"Rate","Volume","Charge",null,"$ Change","% Change",null,"Rate","Volume","Charge",null,"$ Change","% Change",null,"Rate","Volume","Charge",null,"$ Change","% Change"]
[null,null,null,null,"($)",null,"($)",null,"($)",null,"($)",null,null,null,null,"($)",null,"($)",null,null,null,null,"($)",null,"($)",null,null,null,null,"($)",null,"($)",null,null,null,null,"($)",null,"($)"]
["Monthly Service Charge",null,"Monthly",null,{"$f":"'Rates Summary'!$D$30","v":280.08999999999997},1,{"$f":"F23*E23","v":280.08999999999997},null,{"$f":"'Rates Summary'!$E$30","v":105.62},1,{"$f":"J23*I23","v":105.62},null,{"$f":"K23-G23","v":-174.46999999999997},{"$f":"IF((G23)=0,\"\",(M23/G23))","v":-0.62290692277482229},null,{"$f":"'Rates Summary'!$F$30","v":107.49},1,{"$f":"Q23*P23","v":107.49},null,{"$f":"R23-K23","v":1.8699999999999903},{"$f":"IF((K23)=0,\"\",(T23/K23))","v":1.7704980117401913E-2},null,{"$f":"'Rates Summary'!$G$30","v":109.29},1,{"$f":"X23*W23","v":109.29},null,{"$f":"Y23-R23","v":1.8000000000000114},{"$f":"IF((R23)=0,\"\",(AA23/R23))","v":1.6745743790120119E-2},null,{"$f":"'Rates Summary'!$H$30","v":110.99},1,{"$f":"AE23*AD23","v":110.99},null,{"$f":"AF23-Y23","v":1.6999999999999886},{"$f":"IF((Y23)=0,\"\",(AH23/Y23))","v":1.5554945557690443E-2},null,{"$f":"'Rates Summary'!$I$30","v":112.13},1,{"$f":"AL23*AK23","v":112.13},null,{"$f":"AM23-AF23","v":1.1400000000000006},{"$f":"IF((AF23)=0,\"\",(AO23/AF23))","v":1.0271195603207502E-2}]
["Smart Meter (SMIRR) Rate Rider",null,"Monthly",null,0,1,{"$f":"F24*E24","v":0},null,0,1,{"$f":"J24*I24","v":0},null,{"$f":"K24-G24","v":0},{"$f":"IF((G24)=0,\"\",(M24/G24))","v":""},null,0,1,{"$f":"Q24*P24","v":0},null,0,{"$f":"IF((K24)=0,\"\",(T24/K24))","v":""},null,0,1,{"$f":"X24*W24","v":0},null,0,{"$f":"IF((R24)=0,\"\",(AA24/R24))","v":""},null,0,1,{"$f":"AE24*AD24","v":0},null,0,{"$f":"IF((Y24)=0,\"\",(AH24/Y24))","v":""},null,0,1,{"$f":"AL24*AK24","v":0},null,0,{"$f":"IF((AF24)=0,\"\",(AO24/AF24))","v":""}]
["Rate Rider Smart Meters Capital (2016)",null,"Monthly",null,0,1,0,null,0,1,{"$f":"J25*I25","v":0},null,{"$f":"K25-G25","v":0},"",null,0,1,{"$f":"Q25*P25","v":0},null,0,"",null,0,1,{"$f":"X25*W25","v":0},null,0,"",null,0,1,{"$f":"AE25*AD25","v":0},null,0,"",null,0,1,{"$f":"AL25*AK25","v":0},null,0,""]
["Rate Rider Recovery of Stranded Meters",null,"Monthly",null,0,1,0,null,0,1,0,null,0,"",null,0,1,0,null,0,"",null,0,1,0,null,0,"",null,0,1,0,null,0,"",null,0,1,0,null,0,""]
[null,null,null,null,null,1,0,null,null,1,0,null,0,"",null,null,1,0,null,0,"",null,null,1,0,null,0,"",null,null,1,0,null,0,"",null,null,1,0,null,0,""]
[null,null,null,null,null,1,0,null,null,1,0,null,0,"",null,null,1,0,null,0,"",null,null,1,0,null,0,"",null,null,1,0,null,0,"",null,null,1,0,null,0,""]
["Distribution Volumetric Rate",null,"per kW",null,{"$f":"'Rates Summary'!$D$42","v":2.0063},{"$f":"$E$19","v":70},140.441,null,{"$f":"'Rates Summary'!$E$42","v":2.9849000000000001},{"$f":"$E$19","v":70},208.94300000000001,null,68.50200000000001,0.48776354483377365,null,{"$f":"'Rates Summary'!$F$42","v":3.101},{"$f":"$E$19","v":70},217.07,null,8.1269999999999811,3.8895775402860974E-2,null,{"$f":"'Rates Summary'!$G$42","v":3.2130000000000001},{"$f":"$E$19","v":70},224.91,null,7.8400000000000034,3.6117381489842004E-2,null,{"$f":"'Rates Summary'!$H$42","v":3.3260999999999998},{"$f":"$E$19","v":70},232.827,null,7.9170000000000016,3.5200746965452855E-2,null,{"$f":"'Rates Summary'!$I$42","v":3.4096000000000002},{"$f":"$E$19","v":70},238.67200000000003,null,5.8450000000000273,2.5104476714470518E-2]
["Rate Rider Tax Change (2015)",null,"per kW",null,-9.9000000000000008E-3,{"$f":"$E$19","v":70},-0.69300000000000006,null,0,{"$f":"$E$19","v":70},0,null,0.69300000000000006,-1,null,0,{"$f":"$E$19","v":70},0,null,0,"",null,0,{"$f":"$E$19","v":70},0,null,0,"",null,0,{"$f":"$E$19","v":70},0,null,0,"",null,0,{"$f":"$E$19","v":70},0,null,0,""]
["LRAM VA (2016)",null,"per kW",null,0,70,0,null,{"$f":"'Rates Summary'!E7","v":2.93E-2},70,2.0510000000000002,null,2.0510000000000002,1,null,0,70,0,null,-2.0510000000000002,-1,null,0,70,0,null,0,"",null,0,70,0,null,0,"",null,0,70,0,null,0,""]
["Rate Rider Incremental Capital 2012 True-Up (2016)",null,"per kW",null,0,70,0,null,{"$f":"'Rates Summary'!E9","v":0.04},70,2.8000000000000003,null,2.8000000000000003,1,null,0,70,0,null,-2.8000000000000003,-1,null,0,70,0,null,0,"",null,0,70,0,null,0,"",null,0,70,0,null,0,""]
[null,null,null,null,null,70,0,null,null,70,0,null,0,{"$f":"IF((G33)=0,\"\",(M33/G33))","v":""},null,null,70,0,null,0,"",null,null,70,0,null,0,"",null,null,70,0,null,0,"",null,null,70,0,null,0,""]
[null,null,null,null,null,70,0,null,null,70,0,null,0,"",null,null,70,0,null,0,"",null,null,70,0,null,0,"",null,null,70,0,null,0,"",null,null,70,0,null,0,""]
[null,null,null,null,null,70,0,null,null,70,0,null,0,"",null,null,70,0,null,0,"",null,null,70,0,null,0,"",null,null,70,0,null,0,"",null,null,70,0,null,0,""]
[null,null,null,null,null,70,0,null,null,70,0,null,0,"",null,null,70,0,null,0,"",null,null,70,0,null,0,"",null,null,70,0,null,0,"",null,null,70,0,null,0,""]
[null,null,null,null,null,70,0,null,null,70,0,null,0,"",null,null,70,0,null,0,"",null,null,70,0,null,0,"",null,null,70,0,null,0,"",null,null,70,0,null,0,""]
[null,null,null,null,null,70,0,null,null,70,0,null,0,"",null,null,70,0,null,0,"",null,null,70,0,null,0,"",null,null,70,0,null,0,"",null,null,70,0,null,0,""]
["Sub-Total A (excluding pass through)",null,null,null,null,null,{"$f":"SUM(G23:G38)","v":419.83799999999997},null,null,null,{"$f":"SUM(K23:K38)","v":319.41399999999999},null,-100.42399999999998,-0.23919702361387007,null,null,null,{"$f":"SUM(R23:R38)","v":324.56},null,5.146000000000015,1.6110752816094521E-2,null,null,null,{"$f":"SUM(Y23:Y38)","v":334.2},null,9.6399999999999864,2.9701750061621846E-2,null,null,null,{"$f":"SUM(AF23:AF38)","v":343.81700000000001},null,9.6170000000000186,2.8776181926989882E-2,null,null,null,{"$f":"SUM(AM23:AM38)","v":350.80200000000002},null,6.9850000000000136,2.0316040219070068E-2]
["Deferral/Variance Account Disposition Rate Rider (2016)",null,"per kW",null,0,70,{"$f":"F40*E40","v":0},null,{"$f":"'Rates Summary'!E5","v":0.70479999999999998},70,{"$f":"J40*I40","v":49.335999999999999},null,{"$f":"K40-G40","v":49.335999999999999},1,null,0,70,{"$f":"Q40*P40","v":0},null,-49.335999999999999,-1,null,0,70,{"$f":"X40*W40","v":0},null,0,"",null,0,70,{"$f":"AE40*AD40","v":0},null,0,"",null,0,70,{"$f":"AL40*AK40","v":0},null,0,""]
["Deferral/Variance Account Disposition Rate Rider (2016), excluding Wholesale Market Participants",null,"per kW",null,0,70,{"$f":"F41*E41","v":0},null,{"$f":"'Rates Summary'!J5","v":-1.0947},70,{"$f":"J41*I41","v":-76.629000000000005},null,{"$f":"K41-G41","v":-76.629000000000005},1,null,0,70,{"$f":"Q41*P41","v":0},null,76.629000000000005,-1,null,0,70,{"$f":"X41*W41","v":0},null,0,"",null,0,70,{"$f":"AE41*AD41","v":0},null,0,"",null,0,70,{"$f":"AL41*AK41","v":0},null,0,""]
["Rate Rider CGAAP Account 1576 (2016)",null,"per kW",null,0,70,0,null,{"$f":"'Rates Summary'!$E$8","v":-1.0874999999999999},70,-76.125,null,-76.125,1,null,0,70,0,null,76.125,-1,null,0,70,0,null,0,"",null,0,70,0,null,0,"",null,0,70,0,null,0,""]
["Disposition of Global Adjustment (2015)  \nApplicable to Non-RPP Customers, excluding Wholesale Market Participants",null,"per kW",null,5.7342000000000004,70,401.39400000000001,null,0,70,0,null,-401.39400000000001,-1,null,0,70,0,null,0,"",null,0,70,0,null,0,"",null,0,70,0,null,0,"",null,0,70,0,null,0,""]
["Disposition of Global Adjustment (2016)\nApplicable to Non-RPP Customers, excluding Wholesale Market Participants",null,"per kW",null,0,70,0,null,{"$f":"'Rates Summary'!J6","v":7.4691999999999998},70,522.84399999999994,null,522.84399999999994,"",null,0,70,0,null,-522.84399999999994,-1,null,0,70,0,null,0,"",null,0,70,0,null,0,"",null,0,70,0,null,0,""]
["Low Voltage Service Charge",null,"per kW",null,0.252,70,{"$f":"F45*E45","v":17.64},null,{"$f":"'Rates Summary'!E15","v":0.46629999999999999},70,{"$f":"J45*I45","v":32.640999999999998},null,{"$f":"K45-G45","v":15.000999999999998},0.85039682539682526,null,{"$f":"I45","v":0.46629999999999999},70,{"$f":"Q45*P45","v":32.640999999999998},null,{"$f":"R45-K45","v":0},0,null,{"$f":"P45","v":0.46629999999999999},70,{"$f":"X45*W45","v":32.640999999999998},null,{"$f":"Y45-R45","v":0},0,null,{"$f":"W45","v":0.46629999999999999},70,{"$f":"AE45*AD45","v":32.640999999999998},null,{"$f":"AF45-Y45","v":0},0,null,{"$f":"AD45","v":0.46629999999999999},70,{"$f":"AL45*AK45","v":32.640999999999998},null,{"$f":"AM45-AF45","v":0},0]
["Line Losses on Cost of Power",null,"per kWh",null,{"$f":"IF(ISBLANK(C16)=TRUE, 0, IF(C16=\"TOU\", 0.64*$E$56+0.18*$E$57+0.18*$E$58, IF(AND(C16=\"non-TOU\", F60>0), E60,E59)))","v":0.10766000000000001},{"$f":"$E$18*(1+$E$75)-$E$18","v":3440},370.35040000000004,null,{"$f":"E46","v":0.10766000000000001},{"$f":"$E$18*(1+$I$75)-$E$18","v":3929.9999999999854},423.10379999999844,null,52.753399999998408,0.14244186046511195,null,{"$f":"I46","v":0.10766000000000001},{"$f":"$E$18*(1+$I$75)-$E$18","v":3929.9999999999854},{"$f":"Q46*P46","v":423.10379999999844},null,{"$f":"R46-K46","v":0},0,null,{"$f":"P46","v":0.10766000000000001},{"$f":"$E$18*(1+$I$75)-$E$18","v":3929.9999999999854},{"$f":"X46*W46","v":423.10379999999844},null,{"$f":"Y46-R46","v":0},0,null,{"$f":"W46","v":0.10766000000000001},{"$f":"$E$18*(1+$I$75)-$E$18","v":3929.9999999999854},{"$f":"AE46*AD46","v":423.10379999999844},null,{"$f":"AF46-Y46","v":0},0,null,{"$f":"AD46","v":0.10766000000000001},{"$f":"$E$18*(1+$I$75)-$E$18","v":3929.9999999999854},{"$f":"AL46*AK46","v":423.10379999999844},null,{"$f":"AM46-AF46","v":0},0]
["Smart Meter Entity Charge",null,null,null,0,1,{"$f":"F47*E47","v":0},null,{"$f":"E47","v":0},1,{"$f":"J47*I47","v":0},null,{"$f":"I47","v":0},"",null,{"$f":"M47","v":0},1,{"$f":"Q47*P47","v":0},null,{"$f":"R47-K47","v":0},"",null,{"$f":"P47","v":0},1,{"$f":"X47*W47","v":0},null,{"$f":"Y47-R47","v":0},"",null,{"$f":"W47","v":0},1,{"$f":"AE47*AD47","v":0},null,{"$f":"AF47-Y47","v":0},"",null,{"$f":"AD47","v":0},1,{"$f":"AL47*AK47","v":0},null,{"$f":"AM47-AF47","v":0},""]
["Sub-Total B - Distribution (includes Sub-Total A)",null,null,null,null,null,{"$f":"SUM(G40:G47)+G39","v":1209.2224000000001},null,null,null,{"$f":"SUM(K40:K47)+K39","v":1194.5847999999983},null,{"$f":"K48-G48","v":-14.637600000001839},-1.2104969276124753E-2,null,null,null,{"$f":"SUM(R40:R47)+R39","v":780.30479999999852},null,{"$f":"R48-K48","v":-414.27999999999975},-0.34679831854548993,null,null,null,{"$f":"SUM(Y40:Y47)+Y39","v":789.94479999999839},null,{"$f":"Y48-R48","v":9.6399999999998727},1.2354146738556383E-2,null,null,null,{"$f":"SUM(AF40:AF47)+AF39","v":799.56179999999847},null,{"$f":"AF48-Y48","v":9.6170000000000755},1.2174268379259025E-2,null,null,null,{"$f":"SUM(AM40:AM47)+AM39","v":806.54679999999848},null,{"$f":"AM48-AF48","v":6.9850000000000136},8.7360351632607101E-3]
["RTSR - Network",null,"per kW",null,2.6313,{"$f":"$E$19","v":70},{"$f":"F49*E49","v":184.191},null,{"$f":"'Rates Summary'!E17","v":2.7797000000000001},{"$f":"$E$19","v":70},{"$f":"J49*I49","v":194.57900000000001},null,10.388000000000005,5.639797818568771E-2,null,{"$f":"I49","v":2.7797000000000001},{"$f":"$E$19","v":70},{"$f":"Q49*P49","v":194.57900000000001},null,0,0,null,{"$f":"P49","v":2.7797000000000001},{"$f":"$E$19","v":70},{"$f":"X49*W49","v":194.57900000000001},null,0,0,null,{"$f":"W49","v":2.7797000000000001},{"$f":"$E$19","v":70},{"$f":"AE49*AD49","v":194.57900000000001},null,0,0,null,{"$f":"AD49","v":2.7797000000000001},{"$f":"$E$19","v":70},{"$f":"AL49*AK49","v":194.57900000000001},null,0,0]
["RTSR - Line and Transformation Connection",null,"per kW",null,2.0127999999999999,70,{"$f":"F50*E50","v":140.89599999999999},null,{"$f":"'Rates Summary'!E18","v":2.2225000000000001},70,{"$f":"J50*I50","v":155.57500000000002},null,14.67900000000003,0.10418322734499227,null,{"$f":"I50","v":2.2225000000000001},70,{"$f":"Q50*P50","v":155.57500000000002},null,0,0,null,{"$f":"P50","v":2.2225000000000001},70,{"$f":"X50*W50","v":155.57500000000002},null,0,0,null,{"$f":"W50","v":2.2225000000000001},70,{"$f":"AE50*AD50","v":155.57500000000002},null,0,0,null,{"$f":"AD50","v":2.2225000000000001},70,{"$f":"AL50*AK50","v":155.57500000000002},null,0,0]
["Sub-Total C - Delivery (including Sub-Total B)",null,null,null,null,null,{"$f":"SUM(G48:G50)","v":1534.3094000000001},null,null,null,{"$f":"SUM(K48:K50)","v":1544.7387999999983},null,10.429399999998168,6.7974555849023462E-3,null,null,null,{"$f":"SUM(R48:R50)","v":1130.4587999999985},null,-414.27999999999975,-0.26818773503973631,null,null,null,{"$f":"SUM(Y48:Y50)","v":1140.0987999999984},null,9.6399999999998727,8.5275111308787954E-3,null,null,null,{"$f":"SUM(AF48:AF50)","v":1149.7157999999986},null,9.6170000000001892,8.4352338586797942E-3,null,null,null,{"$f":"SUM(AM48:AM50)","v":1156.7007999999985},null,6.9849999999999,6.07541446329598E-3]
["Wholesale Market Service Charge (WMSC)",null,"per kWh",null,4.4000000000000003E-3,{"$f":"$E$18*(1+$E$75)","v":103440},{"$f":"F52*E52","v":455.13600000000002},null,{"$f":"E52","v":4.4000000000000003E-3},{"$f":"$E$18*(1+I75)","v":103929.99999999999},{"$f":"J52*I52","v":457.29199999999997},null,2.1559999999999491,4.7370456303169797E-3,null,{"$f":"I52","v":4.4000000000000003E-3},{"$f":"$E$18*(1+P75)","v":103929.99999999999},{"$f":"Q52*P52","v":457.29199999999997},null,0,0,null,{"$f":"P52","v":4.4000000000000003E-3},{"$f":"$E$18*(1+W75)","v":103929.99999999999},{"$f":"X52*W52","v":457.29199999999997},null,0,0,null,{"$f":"W52","v":4.4000000000000003E-3},{"$f":"$E$18*(1+AD75)","v":103929.99999999999},{"$f":"AE52*AD52","v":457.29199999999997},null,0,0,null,{"$f":"AD52","v":4.4000000000000003E-3},{"$f":"$E$18*(1+AK75)","v":103929.99999999999},{"$f":"AL52*AK52","v":457.29199999999997},null,0,0]
["Rural and Remote Rate Protection (RRRP)",null,"per kWh",null,1.2999999999999999E-3,{"$f":"$E$18*(1+$E$75)","v":103440},134.47199999999998,null,{"$f":"E53","v":1.2999999999999999E-3},{"$f":"$E$18*(1+I75)","v":103929.99999999999},135.10899999999998,null,0.63700000000000045,4.7370456303170959E-3,null,{"$f":"I53","v":1.2999999999999999E-3},{"$f":"$E$18*(1+P75)","v":103929.99999999999},135.10899999999998,null,0,0,null,{"$f":"P53","v":1.2999999999999999E-3},{"$f":"$E$18*(1+W75)","v":103929.99999999999},135.10899999999998,null,0,0,null,{"$f":"W53","v":1.2999999999999999E-3},{"$f":"$E$18*(1+AD75)","v":103929.99999999999},135.10899999999998,null,0,0,null,{"$f":"AD53","v":1.2999999999999999E-3},{"$f":"$E$18*(1+AK75)","v":103929.99999999999},135.10899999999998,null,0,0]
["Standard Supply Service Charge",null,"Monthly",null,0.25,1,0.25,null,{"$f":"E54","v":0.25},1,0.25,null,0,0,null,{"$f":"I54","v":0.25},1,0.25,null,0,0,null,{"$f":"P54","v":0.25},1,0.25,null,0,0,null,{"$f":"W54","v":0.25},1,0.25,null,0,0,null,{"$f":"AD54","v":0.25},1,0.25,null,0,0]
["Debt Retirement Charge (DRC)",null,"per kWh",null,7.0000000000000001E-3,{"$f":"E18","v":100000},700,null,{"$f":"E55","v":7.0000000000000001E-3},{"$f":"E18","v":100000},700,null,0,0,null,{"$f":"I55","v":7.0000000000000001E-3},{"$f":"J55","v":100000},700,null,0,0,null,{"$f":"P55","v":7.0000000000000001E-3},{"$f":"Q55","v":100000},700,null,0,0,null,{"$f":"W55","v":7.0000000000000001E-3},{"$f":"X55","v":100000},700,null,0,0,null,{"$f":"AD55","v":7.0000000000000001E-3},{"$f":"AE55","v":100000},700,null,0,0]
["TOU - Off Peak",null,"per kWh",null,8.3000000000000004E-2,{"$f":"0.64*$E$18","v":64000},5312,null,{"$f":"E56","v":8.3000000000000004E-2},{"$f":"F56","v":64000},5312,null,0,0,null,{"$f":"I56","v":8.3000000000000004E-2},{"$f":"J56","v":64000},5312,null,0,0,null,{"$f":"P56","v":8.3000000000000004E-2},{"$f":"Q56","v":64000},5312,null,0,0,null,{"$f":"W56","v":8.3000000000000004E-2},{"$f":"X56","v":64000},5312,null,0,0,null,{"$f":"AD56","v":8.3000000000000004E-2},{"$f":"AE56","v":64000},5312,null,0,0]
["TOU - Mid Peak",null,"per kWh",null,0.128,{"$f":"0.18*$E$18","v":18000},2304,null,{"$f":"E57","v":0.128},{"$f":"F57","v":18000},2304,null,0,0,null,{"$f":"I57","v":0.128},18000,2304,null,0,0,null,{"$f":"P57","v":0.128},18000,2304,null,0,0,null,{"$f":"W57","v":0.128},18000,2304,null,0,0,null,{"$f":"AD57","v":0.128},18000,2304,null,0,0]
["TOU - On Peak",null,"per kWh",null,0.17499999999999999,{"$f":"0.18*$E$18","v":18000},3150,null,0.17499999999999999,{"$f":"F58","v":18000},3150,null,0,0,null,0.17499999999999999,18000,3150,null,0,0,null,0.17499999999999999,18000,3150,null,0,0,null,0.17499999999999999,18000,3150,null,0,0,null,0.17499999999999999,18000,3150,null,0,0]
["Energy - RPP - Tier 1",null,"per kWh",null,9.9000000000000005E-2,{"$f":"IF(AND($S$1=1, E18>=600), 600, IF(AND($S$1=1, AND(E18<600, E18>=0)), E18, IF(AND($S$1=2, E18>=1000), 1000, IF(AND($S$1=2, AND(E18<1000, E18>=0)), E18))))","v":600},{"$f":"F59*E59","v":59.400000000000006},null,9.9000000000000005E-2,{"$f":"F59","v":600},{"$f":"J59*I59","v":59.400000000000006},null,0,0,null,9.9000000000000005E-2,600,{"$f":"Q59*P59","v":59.400000000000006},null,0,0,null,9.9000000000000005E-2,600,{"$f":"X59*W59","v":59.400000000000006},null,0,0,null,9.9000000000000005E-2,600,{"$f":"AE59*AD59","v":59.400000000000006},null,0,0,null,9.9000000000000005E-2,600,{"$f":"AL59*AK59","v":59.400000000000006},null,0,0]
["Energy - RPP - Tier 2",null,"per kWh",null,0.11600000000000001,{"$f":"IF(AND($S$1=1, E18>=600), E18-600, IF(AND($S$1=1, AND(E18<600, E18>=0)), 0, IF(AND($S$1=2, E18>=1000), E18-1000, IF(AND($S$1=2, AND(E18<1000, E18>=0)), 0))))","v":99400},{"$f":"F60*E60","v":11530.400000000001},null,0.11600000000000001,{"$f":"F60","v":99400},{"$f":"J60*I60","v":11530.400000000001},null,0,0,null,0.11600000000000001,99400,{"$f":"Q60*P60","v":11530.400000000001},null,0,0,null,0.11600000000000001,99400,{"$f":"X60*W60","v":11530.400000000001},null,0,0,null,0.11600000000000001,99400,{"$f":"AE60*AD60","v":11530.400000000001},null,0,0,null,0.11600000000000001,99400,{"$f":"AL60*AK60","v":11530.400000000001},null,0,0]
[null,null,null,null,null,null,null,null,null,null,null,null,null,null,null,null,null,null,null,null,"",null,null,null,null,null,null,"",null,null,null,null,null,null,"",null,null,null,null,null,null,""]
["Total Bill on TOU (before Taxes)",null,null,null,null,null,{"$f":"SUM(G52:G58,G51)","v":13590.1674},null,null,null,{"$f":"SUM(K52:K58,K51)","v":13603.389799999997},null,{"$f":"K62-G62","v":13.222399999996924},{"$f":"IF((G62)=0,\"\",(M62/G62))","v":9.7293871450008216E-4},null,null,null,{"$f":"SUM(R52:R58,R51)","v":13189.109799999998},null,{"$f":"R62-K62","v":-414.27999999999884},{"$f":"IF((K62)=0,\"\",(T62/K62))","v":-3.0454174003012022E-2},null,null,null,{"$f":"SUM(Y52:Y58,Y51)","v":13198.749799999998},null,{"$f":"Y62-R62","v":9.6399999999994179},7.3090603885937917E-4,null,null,null,{"$f":"SUM(AF52:AF58,AF51)","v":13208.366799999998},null,{"$f":"AF62-Y62","v":9.6170000000001892},7.2862961611714098E-4,null,null,null,{"$f":"SUM(AM52:AM58,AM51)","v":13215.351799999999},null,{"$f":"AM62-AF62","v":6.9850000000005821},5.2883146764220567E-4]
["HST",null,null,null,0.13,null,{"$f":"G62*E63","v":1766.7217620000001},null,0.13,null,{"$f":"K62*I63","v":1768.4406739999997},null,1.718911999999591,9.7293871450007696E-4,null,0.13,null,{"$f":"R62*P63","v":1714.5842739999998},null,{"$f":"R63-K63","v":-53.856399999999894},{"$f":"IF((K63)=0,\"\",(T63/K63))","v":-3.0454174003012046E-2},null,0.13,null,{"$f":"Y62*W63","v":1715.8374739999997},null,{"$f":"Y63-R63","v":1.2531999999998789},7.3090603885935272E-4,null,0.13,null,{"$f":"AF62*AD63","v":1717.0876839999999},null,{"$f":"AF63-Y63","v":1.2502100000001519},7.2862961611721514E-4,null,0.13,null,{"$f":"AM62*AK63","v":1717.9957339999999},null,{"$f":"AM63-AF63","v":0.90805000000000291},5.2883146764216317E-4]
["Total Bill (including HST)",null,null,null,null,null,{"$f":"G62+G63","v":15356.889161999999},null,null,null,{"$f":"K62+K63","v":15371.830473999997},null,14.941311999997197,9.7293871450012596E-4,null,null,null,{"$f":"R62+R63","v":14903.694073999999},null,-468.13639999999759,-3.0454174003011952E-2,null,null,null,{"$f":"Y62+Y63","v":14914.587273999998},null,10.893199999998615,7.3090603885933038E-4,null,null,null,{"$f":"AF62+AF63","v":14925.454483999998},null,10.867210000000341,7.2862961611714944E-4,null,null,null,{"$f":"AM62+AM63","v":14933.347533999999},null,7.893050000000585,5.2883146764220079E-4]
["Ontario Clean Energy Benefit 1",null,null,null,null,null,null,null,null,null,null,null,0,"",null,null,null,null,null,0,"",null,null,null,null,null,0,"",null,null,null,null,null,0,"",null,null,null,null,null,0,""]
["Total Bill on TOU (including OCEB)",null,null,null,null,null,{"$f":"G64+G65","v":15356.889161999999},null,null,null,{"$f":"K64+K65","v":15371.830473999997},null,14.941311999997197,9.7293871450012596E-4,null,null,null,{"$f":"R64+R65","v":14903.694073999999},null,-468.13639999999759,{"$f":"IF((K66)=0,\"\",(T66/K66))","v":-3.0454174003011952E-2},null,null,null,{"$f":"Y64+Y65","v":14914.587273999998},null,10.893199999998615,{"$f":"IF((R66)=0,\"\",(AA66/R66))","v":7.3090603885933038E-4},null,null,null,{"$f":"AF64+AF65","v":14925.454483999998},null,10.867210000000341,{"$f":"IF((Y66)=0,\"\",(AH66/Y66))","v":7.2862961611714944E-4},null,null,null,{"$f":"AM64+AM65","v":14933.347533999999},null,7.893050000000585,{"$f":"IF((AF66)=0,\"\",(AO66/AF66))","v":5.2883146764220079E-4}]
[null,null,null,null,null,null,null,null,null,null,null,null,null,null,null,null,null,null,null,null,"",null,null,null,null,null,null,"",null,null,null,null,null,null,"",null,null,null,null,null,null,""]
["Total Bill on RPP (before Taxes)",null,null,null,null,null,{"$f":"SUM(G60:G61,G51,G52:G55)","v":14354.567400000002},null,null,null,{"$f":"SUM(K60:K61,K51,K52:K55)","v":14367.7898},null,{"$f":"K68-G68","v":13.222399999998743},{"$f":"IF((G68)=0,\"\",(M68/G68))","v":9.2112842077001508E-4},null,null,null,{"$f":"SUM(R60:R61,R51,R52:R55)","v":13953.5098},null,{"$f":"R68-K68","v":-414.28000000000065},-2.8833940763804928E-2,null,null,null,{"$f":"SUM(Y60:Y61,Y51,Y52:Y55)","v":13963.149799999999},null,{"$f":"SUM(AA60:AA61,AA51,AA52:AA55)","v":9.6399999999998727},6.9086560572737573E-4,null,null,null,{"$f":"SUM(AF60:AF61,AF51,AF52:AF55)","v":13972.766799999999},null,{"$f":"AF68-Y68","v":9.6170000000001892},6.8874144714827813E-4,null,null,null,{"$f":"SUM(AM60:AM61,AM51,AM52:AM55)","v":13979.7518},null,{"$f":"AM68-AF68","v":6.9850000000005821},4.9990099312332203E-4]
["HST",null,null,null,0.13,null,{"$f":"G68*E69","v":1866.0937620000002},null,0.13,null,{"$f":"K68*I69","v":1867.812674},null,1.7189119999998184,{"$f":"IF((G69)=0,\"\",(M69/G69))","v":9.2112842077000533E-4},null,0.13,null,{"$f":"R68*P69","v":1813.9562740000001},null,{"$f":"R69-K69","v":-53.856399999999894},-2.8833940763804827E-2,null,0.13,null,{"$f":"Y68*W69","v":1815.209474},null,{"$f":"Y69-R69","v":1.2531999999998789},6.9086560572731795E-4,null,0.13,null,{"$f":"AF68*AD69","v":1816.4596839999999},null,{"$f":"AF69-Y69","v":1.2502099999999245},6.8874144714822295E-4,null,0.13,null,{"$f":"AM68*AK69","v":1817.3677340000002},null,{"$f":"AM69-AF69","v":0.90805000000023028},4.9990099312340714E-4]
["Total Bill (including HST)",null,null,null,null,null,{"$f":"G68+G69","v":16220.661162000002},null,null,null,{"$f":"K68+K69","v":16235.602474000001},null,14.941311999999016,9.2112842077004197E-4,null,null,null,{"$f":"R68+R69","v":15767.466074},null,-468.13640000000123,-2.8833940763804956E-2,null,null,null,{"$f":"Y68+Y69","v":15778.359273999999},null,10.893199999998615,6.9086560572729691E-4,null,null,null,{"$f":"AF68+AF69","v":15789.226483999999},null,10.867210000000341,6.8874144714828616E-4,null,null,null,{"$f":"AM68+AM69","v":15797.119533999999},null,7.893050000000585,4.9990099312331748E-4]
["Ontario Clean Energy Benefit 1",null,null,null,null,null,null,null,null,null,null,null,0,"",null,null,null,null,null,0,"",null,null,null,null,null,0,"",null,null,null,null,null,0,"",null,null,null,null,null,0,""]
["Total Bill on RPP (including OCEB)",null,null,null,null,null,{"$f":"SUM(G70:G71)","v":16220.661162000002},null,null,null,{"$f":"SUM(K70:K71)","v":16235.602474000001},null,14.941311999999016,9.2112842077004197E-4,null,null,null,{"$f":"SUM(R70:R71)","v":15767.466074},null,-468.13640000000123,-2.8833940763804956E-2,null,null,null,{"$f":"SUM(Y70:Y71)","v":15778.359273999999},null,10.893199999998615,6.9086560572729691E-4,null,null,null,{"$f":"SUM(AF70:AF71)","v":15789.226483999999},null,10.867210000000341,6.8874144714828616E-4,null,null,null,{"$f":"SUM(AM70:AM71)","v":15797.119533999999},null,7.893050000000585,4.9990099312331748E-4]
[]
[]
["Loss Factor (%)",null,null,null,3.44E-2,null,null,null,3.9300000000000002E-2,null,null,null,null,null,null,3.9300000000000002E-2,null,null,null,null,null,null,3.9300000000000002E-2,null,null,null,null,null,null,3.9300000000000002E-2,null,null,null,null,null,null,3.9300000000000002E-2]
[]
["Distribution Excluding Rate Riders",null,null,null,"2015 Current Board-Approved",null,null,null,"2016 Test Year 1\nProposed",null,null,null,"Impact\n2016 TEST vs. \n2015 Bridge",null,null,"2017 Test Year 2\nProposed",null,null,null,"Impact\n2017 TEST 2 vs. \n2016 Test 1",null,null,"2018 Test Year 3\nProposed",null,null,null,"Impact\n2018 TEST 3 vs. \n2017 Test 2",null,null,"2019 Test Year 4\nProposed",null,null,null,"Impact\n2019 TEST 4 vs. \n2018 Test 3",null,null,"2020 Test Year 5 \nProposed",null,null,null,"Impact\n2019 TEST 5 vs. \n2019 Test 4"]
[null,null,"Charge Unit",null,"Rate","Volume","Charge",null,"Rate","Volume","Charge",null,"$ Change","% Change",null,"Rate","Volume","Charge",null,"$ Change","% Change",null,"Rate","Volume","Charge",null,"$ Change","% Change",null,"Rate","Volume","Charge",null,"$ Change","% Change",null,"Rate","Volume","Charge",null,"$ Change","% Change"]
[null,null,null,null,"($)",null,"($)",null,"($)",null,"($)",null,null,null,null,"($)",null,"($)",null,null,null,null,"($)",null,"($)",null,null,null,null,"($)",null,"($)",null,null,null,null,"($)",null,"($)"]
["Monthly Service Charge",null,"Monthly",null,{"$f":"'Rates Summary'!$D$30","v":280.08999999999997},1,{"$f":"F80*E80","v":280.08999999999997},null,{"$f":"'Rates Summary'!$E$30","v":105.62},1,{"$f":"J80*I80","v":105.62},null,{"$f":"K80-G80","v":-174.46999999999997},{"$f":"IF((G80)=0,\"\",(M80/G80))","v":-0.62290692277482229},null,{"$f":"'Rates Summary'!$F$30","v":107.49},1,{"$f":"Q80*P80","v":107.49},null,{"$f":"R80-K80","v":1.8699999999999903},{"$f":"IF((K80)=0,\"\",(T80/K80))","v":1.7704980117401913E-2},null,{"$f":"'Rates Summary'!$G$30","v":109.29},1,{"$f":"X80*W80","v":109.29},null,{"$f":"Y80-R80","v":1.8000000000000114},{"$f":"IF((R80)=0,\"\",(AA80/R80))","v":1.6745743790120119E-2},null,{"$f":"'Rates Summary'!$H$30","v":110.99},1,{"$f":"AE80*AD80","v":110.99},null,{"$f":"AF80-Y80","v":1.6999999999999886},{"$f":"IF((Y80)=0,\"\",(AH80/Y80))","v":1.5554945557690443E-2},null,{"$f":"'Rates Summary'!$I$30","v":112.13},1,{"$f":"AL80*AK80","v":112.13},null,{"$f":"AM80-AF80","v":1.1400000000000006},{"$f":"IF((AF80)=0,\"\",(AO80/AF80))","v":1.0271195603207502E-2}]
["Distribution Volumetric Rate",null,"per kW",null,{"$f":"'Rates Summary'!$D$42","v":2.0063},{"$f":"$E$19","v":70},{"$f":"F81*E81","v":140.441},null,{"$f":"'Rates Summary'!$E$42","v":2.9849000000000001},{"$f":"$E$19","v":70},{"$f":"J81*I81","v":208.94300000000001},null,{"$f":"K81-G81","v":68.50200000000001},{"$f":"IF((G81)=0,\"\",(M81/G81))","v":0.48776354483377365},null,{"$f":"'Rates Summary'!$F$42","v":3.101},{"$f":"$E$19","v":70},{"$f":"Q81*P81","v":217.07},null,8.1269999999999811,{"$f":"IF((K81)=0,\"\",(T81/K81))","v":3.8895775402860974E-2},null,{"$f":"'Rates Summary'!$G$42","v":3.2130000000000001},{"$f":"$E$19","v":70},{"$f":"X81*W81","v":224.91},null,7.8400000000000034,{"$f":"IF((R81)=0,\"\",(AA81/R81))","v":3.6117381489842004E-2},null,{"$f":"'Rates Summary'!$H$42","v":3.3260999999999998},{"$f":"$E$19","v":70},{"$f":"AE81*AD81","v":232.827},null,7.9170000000000016,{"$f":"IF((Y81)=0,\"\",(AH81/Y81))","v":3.5200746965452855E-2},null,{"$f":"'Rates Summary'!$I$42","v":3.4096000000000002},{"$f":"$E$19","v":70},{"$f":"AL81*AK81","v":238.67200000000003},null,5.8450000000000273,{"$f":"IF((AF81)=0,\"\",(AO81/AF81))","v":2.5104476714470518E-2}]
["\"Regular\" Distribution Only",null,null,null,null,null,{"$f":"SUM(G80:G81)","v":420.53099999999995},null,null,null,{"$f":"SUM(K80:K81)","v":314.56299999999999},null,-105.96799999999996,-0.25198617937797685,null,null,null,{"$f":"SUM(R80:R81)","v":324.56},null,9.9970000000000141,3.178059720946206E-2,null,null,null,{"$f":"SUM(Y80:Y81)","v":334.2},null,9.6399999999999864,2.9701750061621846E-2,null,null,null,{"$f":"SUM(AF80:AF81)","v":343.81700000000001},null,9.6170000000000186,2.8776181926989882E-2,null,null,null,{"$f":"SUM(AM80:AM81)","v":350.80200000000002},null,6.9850000000000136,2.0316040219070068E-2]
[]
[]
[null,"Residential (kWh) - 100, 250, 500, 800, 1000, 1500, 2000"]
[null,"GS<50kW (kWh) - 1000, 2000, 5000, 10000, 15000"]
[null,"GS>50kW (kW) - 60, 100, 500, 1000"]
[null,"Large User - range appropriate for utility"]
[null,"Lighting Classes and USL - 150 kWh and 1 kW, range appropriate for utility."]
[]
[null,null,"Note that cells with the highlighted color shown to the left indicate quantities that are loss adjusted."]

{"sheet":"Bill Impact GS50-4999 500kW","index":17,"n_rows":91,"n_cols":42,"rows_kept":91,"cut":false,"hidden":false,"merged":[[19,33,19,34],[19,36,19,38],[20,20,21,20],[20,26,21,26],[19,40,19,41],[19,22,19,24],[19,26,19,27],[19,29,19,31],[20,27,21,27],[20,33,21,33],[20,34,21,34],[20,40,21,40],[20,41,21,41],[2,0,2,9],[9,0,9,13],[10,0,10,13],[13,2,13,13],[13,15,13,26],[19,4,19,6],[19,8,19,10],[19,12,19,13],[19,15,19,17],[19,19,19,20],[64,0,64,2],[20,2,21,2],[20,12,21,12],[20,13,21,13],[20,19,21,19],[76,29,76,31],[76,33,76,34],[77,34,78,34],[65,0,65,2],[70,0,70,2],[71,0,71,2],[76,4,76,6],[76,8,76,10],[76,12,76,13],[77,40,78,40],[77,41,78,41],[76,36,76,38],[76,40,76,41],[77,2,78,2],[77,12,78,12],[77,13,78,13],[77,19,78,19],[77,20,78,20],[77,26,78,26],[77,27,78,27],[77,33,78,33],[76,15,76,17],[76,19,76,20],[76,22,76,24],[76,26,76,27]]}
[null,null,null,null,null,null,null,null,null,null,null,null,"File Number:",{"$f":"EBNUMBER","v":"EB-2015-0083"},null,null,null,null,1]
[null,null,null,null,null,null,null,null,null,null,null,null,"Exhibit:",{"$f":"'Bill Impact Resi 204kWh'!$N$2","v":8}]
[null,null,null,null,null,null,null,null,null,null,null,null,"Tab:",{"$f":"'Bill Impact Resi 204kWh'!$N$3","v":4}]
[null,null,null,null,null,null,null,null,null,null,null,null,"Schedule:",{"$f":"'Bill Impact Resi 204kWh'!$N$4","v":3}]
[null,null,null,null,null,null,null,null,null,null,null,null,"Page:"]
[]
[null,null,null,null,null,null,null,null,null,null,null,null,"Date:",{"$f":"'Bill Impact Resi 204kWh'!$N$7","v":"Settlement"}]
[]
[]
["Appendix 2-W"]
["Bill Impacts"]
[]
[]
["Customer Class:",null,"General Service 50 to 4,999 kW",null,null,null,null,null,null,null,null,null,null,null,null,{"$f":"C14","v":"General Service 50 to 4,999 kW"},null,null,null,null,null,null,null,null,null,null,null,null,null,null,null,null,null,null,null,null,{"$f":"P14","v":"General Service 50 to 4,999 kW"}]
[]
["TOU / non-TOU:",null,"TOU"]
[]
[null,null,"Consumption",null,350000," kWh"]
[null,null,"Load",null,500,"kW"]
[null,null,null,null,"2015 Current Board-Approved",null,null,null,"2016 Test Year 1\nProposed",null,null,null,"Impact\n2016 TEST vs. \n2015 Bridge",null,null,"2017 Test Year 2\nProposed",null,null,null,"Impact\n2017 TEST 2 vs. \n2016 Test 1",null,null,"2018 Test Year 3\nProposed",null,null,null,"Impact\n2018 TEST 3 vs. \n2017 Test 2",null,null,"2019 Test Year 4\nProposed",null,null,null,"Impact\n2019 TEST 4 vs. \n2018 Test 3",null,null,"2020 Test Year 5 \nProposed",null,null,null,"Impact\n2019 TEST 5 vs. \n2019 Test 4"]
[null,null,"Charge Unit",null,"Rate","Volume","Charge",null,"Rate","Volume","Charge",null,"$ Change","% Change",null,"Rate","Volume","Charge",null,"$ Change","% Change",null,"Rate","Volume","Charge",null,"$ Change","% Change",null,"Rate","Volume","Charge",null,"$ Change","% Change",null,"Rate","Volume","Charge",null,"$ Change","% Change"]
[null,null,null,null,"($)",null,"($)",null,"($)",null,"($)",null,null,null,null,"($)",null,"($)",null,null,null,null,"($)",null,"($)",null,null,null,null,"($)",null,"($)",null,null,null,null,"($)",null,"($)"]
["Monthly Service Charge",null,"Monthly",null,{"$f":"'Rates Summary'!$D$30","v":280.08999999999997},1,{"$f":"F23*E23","v":280.08999999999997},null,{"$f":"'Rates Summary'!$E$30","v":105.62},1,{"$f":"J23*I23","v":105.62},null,{"$f":"K23-G23","v":-174.46999999999997},{"$f":"IF((G23)=0,\"\",(M23/G23))","v":-0.62290692277482229},null,{"$f":"'Rates Summary'!$F$30","v":107.49},1,{"$f":"Q23*P23","v":107.49},null,{"$f":"R23-K23","v":1.8699999999999903},{"$f":"IF((K23)=0,\"\",(T23/K23))","v":1.7704980117401913E-2},null,{"$f":"'Rates Summary'!$G$30","v":109.29},1,{"$f":"X23*W23","v":109.29},null,{"$f":"Y23-R23","v":1.8000000000000114},{"$f":"IF((R23)=0,\"\",(AA23/R23))","v":1.6745743790120119E-2},null,{"$f":"'Rates Summary'!$H$30","v":110.99},1,{"$f":"AE23*AD23","v":110.99},null,{"$f":"AF23-Y23","v":1.6999999999999886},{"$f":"IF((Y23)=0,\"\",(AH23/Y23))","v":1.5554945557690443E-2},null,{"$f":"'Rates Summary'!$I$30","v":112.13},1,{"$f":"AL23*AK23","v":112.13},null,{"$f":"AM23-AF23","v":1.1400000000000006},{"$f":"IF((AF23)=0,\"\",(AO23/AF23))","v":1.0271195603207502E-2}]
["Smart Meter (SMIRR) Rate Rider",null,"Monthly",null,0,1,{"$f":"F24*E24","v":0},null,0,1,{"$f":"J24*I24","v":0},null,{"$f":"K24-G24","v":0},{"$f":"IF((G24)=0,\"\",(M24/G24))","v":""},null,0,1,{"$f":"Q24*P24","v":0},null,0,{"$f":"IF((K24)=0,\"\",(T24/K24))","v":""},null,0,1,{"$f":"X24*W24","v":0},null,0,{"$f":"IF((R24)=0,\"\",(AA24/R24))","v":""},null,0,1,{"$f":"AE24*AD24","v":0},null,0,{"$f":"IF((Y24)=0,\"\",(AH24/Y24))","v":""},null,0,1,{"$f":"AL24*AK24","v":0},null,0,{"$f":"IF((AF24)=0,\"\",(AO24/AF24))","v":""}]
["Rate Rider Smart Meters Capital (2016)",null,"Monthly",null,0,1,0,null,0,1,{"$f":"J25*I25","v":0},null,{"$f":"K25-G25","v":0},"",null,0,1,{"$f":"Q25*P25","v":0},null,0,"",null,0,1,{"$f":"X25*W25","v":0},null,0,"",null,0,1,{"$f":"AE25*AD25","v":0},null,0,"",null,0,1,{"$f":"AL25*AK25","v":0},null,0,""]
["Rate Rider Recovery of Stranded Meters",null,"Monthly",null,0,1,0,null,0,1,0,null,0,"",null,0,1,0,null,0,"",null,0,1,0,null,0,"",null,0,1,0,null,0,"",null,0,1,0,null,0,""]
[null,null,null,null,null,1,0,null,null,1,0,null,0,"",null,null,1,0,null,0,"",null,null,1,0,null,0,"",null,null,1,0,null,0,"",null,null,1,0,null,0,""]
[null,null,null,null,null,1,0,null,null,1,0,null,0,"",null,null,1,0,null,0,"",null,null,1,0,null,0,"",null,null,1,0,null,0,"",null,null,1,0,null,0,""]
["Distribution Volumetric Rate",null,"per kW",null,{"$f":"'Rates Summary'!$D$42","v":2.0063},{"$f":"$E$19","v":500},1003.15,null,{"$f":"'Rates Summary'!$E$42","v":2.9849000000000001},{"$f":"$E$19","v":500},1492.45,null,489.30000000000007,0.48776354483377371,null,{"$f":"'Rates Summary'!$F$42","v":3.101},{"$f":"$E$19","v":500},1550.5,null,58.049999999999955,3.8895775402861037E-2,null,{"$f":"'Rates Summary'!$G$42","v":3.2130000000000001},{"$f":"$E$19","v":500},1606.5,null,56,3.6117381489841983E-2,null,{"$f":"'Rates Summary'!$H$42","v":3.3260999999999998},{"$f":"$E$19","v":500},1663.05,null,56.549999999999955,3.520074696545282E-2,null,{"$f":"'Rates Summary'!$I$42","v":3.4096000000000002},{"$f":"$E$19","v":500},1704.8000000000002,null,41.750000000000227,2.5104476714470539E-2]
["Rate Rider Tax Change (2015)",null,"per kW",null,-9.9000000000000008E-3,{"$f":"$E$19","v":500},-4.95,null,0,{"$f":"$E$19","v":500},0,null,4.95,-1,null,0,{"$f":"$E$19","v":500},0,null,0,"",null,0,{"$f":"$E$19","v":500},0,null,0,"",null,0,{"$f":"$E$19","v":500},0,null,0,"",null,0,{"$f":"$E$19","v":500},0,null,0,""]
["LRAM VA (2016)",null,"per kW",null,0,500,0,null,{"$f":"'Rates Summary'!E7","v":2.93E-2},500,14.65,null,14.65,1,null,0,500,0,null,-14.65,-1,null,0,500,0,null,0,"",null,0,500,0,null,0,"",null,0,500,0,null,0,""]
["Rate Rider Incremental Capital 2012 True-Up (2016)",null,"per kW",null,0,500,0,null,{"$f":"'Rates Summary'!E9","v":0.04},500,20,null,20,1,null,0,500,0,null,-20,-1,null,0,500,0,null,0,"",null,0,500,0,null,0,"",null,0,500,0,null,0,""]
[null,null,null,null,null,500,0,null,null,500,0,null,0,{"$f":"IF((G33)=0,\"\",(M33/G33))","v":""},null,null,500,0,null,0,"",null,null,500,0,null,0,"",null,null,500,0,null,0,"",null,null,500,0,null,0,""]
[null,null,null,null,null,500,0,null,null,500,0,null,0,"",null,null,500,0,null,0,"",null,null,500,0,null,0,"",null,null,500,0,null,0,"",null,null,500,0,null,0,""]
[null,null,null,null,null,500,0,null,null,500,0,null,0,"",null,null,500,0,null,0,"",null,null,500,0,null,0,"",null,null,500,0,null,0,"",null,null,500,0,null,0,""]
[null,null,null,null,null,500,0,null,null,500,0,null,0,"",null,null,500,0,null,0,"",null,null,500,0,null,0,"",null,null,500,0,null,0,"",null,null,500,0,null,0,""]
[null,null,null,null,null,500,0,null,null,500,0,null,0,"",null,null,500,0,null,0,"",null,null,500,0,null,0,"",null,null,500,0,null,0,"",null,null,500,0,null,0,""]
[null,null,null,null,null,500,0,null,null,500,0,null,0,"",null,null,500,0,null,0,"",null,null,500,0,null,0,"",null,null,500,0,null,0,"",null,null,500,0,null,0,""]
["Sub-Total A (excluding pass through)",null,null,null,null,null,{"$f":"SUM(G23:G38)","v":1278.29},null,null,null,{"$f":"SUM(K23:K38)","v":1632.7200000000003},null,354.43000000000029,0.27726885135610879,null,null,null,{"$f":"SUM(R23:R38)","v":1657.99},null,25.269999999999754,1.5477240433142088E-2,null,null,null,{"$f":"SUM(Y23:Y38)","v":1715.79},null,57.799999999999955,3.4861488911272054E-2,null,null,null,{"$f":"SUM(AF23:AF38)","v":1774.04},null,58.25,3.3949376089148442E-2,null,null,null,{"$f":"SUM(AM23:AM38)","v":1816.9300000000003},null,42.890000000000327,2.417645599873753E-2]
["Deferral/Variance Account Disposition Rate Rider (2016)",null,"per kW",null,0,500,{"$f":"F40*E40","v":0},null,{"$f":"'Rates Summary'!E5","v":0.70479999999999998},500,{"$f":"J40*I40","v":352.4},null,{"$f":"K40-G40","v":352.4},1,null,0,500,{"$f":"Q40*P40","v":0},null,-352.4,-1,null,0,500,{"$f":"X40*W40","v":0},null,0,"",null,0,500,{"$f":"AE40*AD40","v":0},null,0,"",null,0,500,{"$f":"AL40*AK40","v":0},null,0,""]
["Deferral/Variance Account Disposition Rate Rider (2016), excluding Wholesale Market Participants",null,"per kW",null,0,500,{"$f":"F41*E41","v":0},null,{"$f":"'Rates Summary'!J5","v":-1.0947},500,{"$f":"J41*I41","v":-547.35},null,{"$f":"K41-G41","v":-547.35},1,null,0,500,{"$f":"Q41*P41","v":0},null,547.35,-1,null,0,500,{"$f":"X41*W41","v":0},null,0,"",null,0,500,{"$f":"AE41*AD41","v":0},null,0,"",null,0,500,{"$f":"AL41*AK41","v":0},null,0,""]
["Rate Rider CGAAP Account 1576 (2016)",null,"per kW",null,0,500,0,null,{"$f":"'Rates Summary'!$E$8","v":-1.0874999999999999},500,-543.75,null,-543.75,1,null,0,500,0,null,543.75,-1,null,0,500,0,null,0,"",null,0,500,0,null,0,"",null,0,500,0,null,0,""]
["Disposition of Global Adjustment (2015)  \nApplicable to Non-RPP Customers, excluding Wholesale Market Participants",null,"per kW",null,5.7342000000000004,500,2867.1000000000004,null,0,500,0,null,-2867.1000000000004,-1,null,0,500,0,null,0,"",null,0,500,0,null,0,"",null,0,500,0,null,0,"",null,0,500,0,null,0,""]
["Disposition of Global Adjustment (2016)\nApplicable to Non-RPP Customers, excluding Wholesale Market Participants",null,"per kW",null,0,500,0,null,{"$f":"'Rates Summary'!J6","v":7.4691999999999998},500,3734.6,null,3734.6,"",null,0,500,0,null,-3734.6,-1,null,0,500,0,null,0,"",null,0,500,0,null,0,"",null,0,500,0,null,0,""]
["Low Voltage Service Charge",null,"per kW",null,0.252,500,{"$f":"F45*E45","v":126},null,{"$f":"'Rates Summary'!E15","v":0.46629999999999999},500,{"$f":"J45*I45","v":233.15},null,{"$f":"K45-G45","v":107.15},0.85039682539682548,null,{"$f":"I45","v":0.46629999999999999},500,{"$f":"Q45*P45","v":233.15},null,{"$f":"R45-K45","v":0},0,null,{"$f":"P45","v":0.46629999999999999},500,{"$f":"X45*W45","v":233.15},null,{"$f":"Y45-R45","v":0},0,null,{"$f":"W45","v":0.46629999999999999},500,{"$f":"AE45*AD45","v":233.15},null,{"$f":"AF45-Y45","v":0},0,null,{"$f":"AD45","v":0.46629999999999999},500,{"$f":"AL45*AK45","v":233.15},null,{"$f":"AM45-AF45","v":0},0]
["Line Losses on Cost of Power",null,"per kWh",null,{"$f":"IF(ISBLANK(C16)=TRUE, 0, IF(C16=\"TOU\", 0.64*$E$56+0.18*$E$57+0.18*$E$58, IF(AND(C16=\"non-TOU\", F60>0), E60,E59)))","v":0.10766000000000001},{"$f":"$E$18*(1+$E$75)-$E$18","v":12040},1296.2264,null,{"$f":"E46","v":0.10766000000000001},{"$f":"$E$18*(1+$I$75)-$E$18","v":13754.999999999942},1480.8632999999938,null,184.63689999999383,0.14244186046511151,null,{"$f":"I46","v":0.10766000000000001},{"$f":"$E$18*(1+$I$75)-$E$18","v":13754.999999999942},{"$f":"Q46*P46","v":1480.8632999999938},null,{"$f":"R46-K46","v":0},0,null,{"$f":"P46","v":0.10766000000000001},{"$f":"$E$18*(1+$I$75)-$E$18","v":13754.999999999942},{"$f":"X46*W46","v":1480.8632999999938},null,{"$f":"Y46-R46","v":0},0,null,{"$f":"W46","v":0.10766000000000001},{"$f":"$E$18*(1+$I$75)-$E$18","v":13754.999999999942},{"$f":"AE46*AD46","v":1480.8632999999938},null,{"$f":"AF46-Y46","v":0},0,null,{"$f":"AD46","v":0.10766000000000001},{"$f":"$E$18*(1+$I$75)-$E$18","v":13754.999999999942},{"$f":"AL46*AK46","v":1480.8632999999938},null,{"$f":"AM46-AF46","v":0},0]
["Smart Meter Entity Charge",null,null,null,0,1,{"$f":"F47*E47","v":0},null,{"$f":"E47","v":0},1,{"$f":"J47*I47","v":0},null,{"$f":"I47","v":0},"",null,{"$f":"M47","v":0},1,{"$f":"Q47*P47","v":0},null,{"$f":"R47-K47","v":0},"",null,{"$f":"P47","v":0},1,{"$f":"X47*W47","v":0},null,{"$f":"Y47-R47","v":0},"",null,{"$f":"W47","v":0},1,{"$f":"AE47*AD47","v":0},null,{"$f":"AF47-Y47","v":0},"",null,{"$f":"AD47","v":0},1,{"$f":"AL47*AK47","v":0},null,{"$f":"AM47-AF47","v":0},""]
["Sub-Total B - Distribution (includes Sub-Total A)",null,null,null,null,null,{"$f":"SUM(G40:G47)+G39","v":5567.6163999999999},null,null,null,{"$f":"SUM(K40:K47)+K39","v":6342.6332999999941},null,{"$f":"K48-G48","v":775.01689999999417},0.13920084365007512,null,null,null,{"$f":"SUM(R40:R47)+R39","v":3372.0032999999939},null,{"$f":"R48-K48","v":-2970.63},-0.46835909621324046,null,null,null,{"$f":"SUM(Y40:Y47)+Y39","v":3429.8032999999941},null,{"$f":"Y48-R48","v":57.800000000000182},1.7141145739685452E-2,null,null,null,{"$f":"SUM(AF40:AF47)+AF39","v":3488.0532999999941},null,{"$f":"AF48-Y48","v":58.25},1.6983481239288591E-2,null,null,null,{"$f":"SUM(AM40:AM47)+AM39","v":3530.9432999999945},null,{"$f":"AM48-AF48","v":42.890000000000327},1.229625705547573E-2]
["RTSR - Network",null,"per kW",null,2.6313,{"$f":"$E$19","v":500},{"$f":"F49*E49","v":1315.65},null,{"$f":"'Rates Summary'!E17","v":2.7797000000000001},{"$f":"$E$19","v":500},{"$f":"J49*I49","v":1389.8500000000001},null,74.200000000000045,5.6397978185687717E-2,null,{"$f":"I49","v":2.7797000000000001},{"$f":"$E$19","v":500},{"$f":"Q49*P49","v":1389.8500000000001},null,0,0,null,{"$f":"P49","v":2.7797000000000001},{"$f":"$E$19","v":500},{"$f":"X49*W49","v":1389.8500000000001},null,0,0,null,{"$f":"W49","v":2.7797000000000001},{"$f":"$E$19","v":500},{"$f":"AE49*AD49","v":1389.8500000000001},null,0,0,null,{"$f":"AD49","v":2.7797000000000001},{"$f":"$E$19","v":500},{"$f":"AL49*AK49","v":1389.8500000000001},null,0,0]
["RTSR - Line and Transformation Connection",null,"per kW",null,2.0127999999999999,500,{"$f":"F50*E50","v":1006.4},null,{"$f":"'Rates Summary'!E18","v":2.2225000000000001},500,{"$f":"J50*I50","v":1111.25},null,104.85000000000002,0.10418322734499208,null,{"$f":"I50","v":2.2225000000000001},500,{"$f":"Q50*P50","v":1111.25},null,0,0,null,{"$f":"P50","v":2.2225000000000001},500,{"$f":"X50*W50","v":1111.25},null,0,0,null,{"$f":"W50","v":2.2225000000000001},500,{"$f":"AE50*AD50","v":1111.25},null,0,0,null,{"$f":"AD50","v":2.2225000000000001},500,{"$f":"AL50*AK50","v":1111.25},null,0,0]
["Sub-Total C - Delivery (including Sub-Total B)",null,null,null,null,null,{"$f":"SUM(G48:G50)","v":7889.6664000000001},null,null,null,{"$f":"SUM(K48:K50)","v":8843.7332999999944},null,954.06689999999435,0.12092613953867483,null,null,null,{"$f":"SUM(R48:R50)","v":5873.1032999999943},null,-2970.63,-0.33590225973910837,null,null,null,{"$f":"SUM(Y48:Y50)","v":5930.9032999999945},null,57.800000000000182,9.841475119295149E-3,null,null,null,{"$f":"SUM(AF48:AF50)","v":5989.1532999999945},null,58.25,9.8214381610302187E-3,null,null,null,{"$f":"SUM(AM48:AM50)","v":6032.0432999999948},null,42.890000000000327,7.1612793748325604E-3]
["Wholesale Market Service Charge (WMSC)",null,"per kWh",null,4.4000000000000003E-3,{"$f":"$E$18*(1+$E$75)","v":362040},{"$f":"F52*E52","v":1592.9760000000001},null,{"$f":"E52","v":4.4000000000000003E-3},{"$f":"$E$18*(1+I75)","v":363754.99999999994},{"$f":"J52*I52","v":1600.5219999999999},null,7.5459999999998217,4.7370456303169797E-3,null,{"$f":"I52","v":4.4000000000000003E-3},{"$f":"$E$18*(1+P75)","v":363754.99999999994},{"$f":"Q52*P52","v":1600.5219999999999},null,0,0,null,{"$f":"P52","v":4.4000000000000003E-3},{"$f":"$E$18*(1+W75)","v":363754.99999999994},{"$f":"X52*W52","v":1600.5219999999999},null,0,0,null,{"$f":"W52","v":4.4000000000000003E-3},{"$f":"$E$18*(1+AD75)","v":363754.99999999994},{"$f":"AE52*AD52","v":1600.5219999999999},null,0,0,null,{"$f":"AD52","v":4.4000000000000003E-3},{"$f":"$E$18*(1+AK75)","v":363754.99999999994},{"$f":"AL52*AK52","v":1600.5219999999999},null,0,0]
["Rural and Remote Rate Protection (RRRP)",null,"per kWh",null,1.2999999999999999E-3,{"$f":"$E$18*(1+$E$75)","v":362040},470.65199999999999,null,{"$f":"E53","v":1.2999999999999999E-3},{"$f":"$E$18*(1+I75)","v":363754.99999999994},472.8814999999999,null,2.2294999999999163,4.7370456303169146E-3,null,{"$f":"I53","v":1.2999999999999999E-3},{"$f":"$E$18*(1+P75)","v":363754.99999999994},472.8814999999999,null,0,0,null,{"$f":"P53","v":1.2999999999999999E-3},{"$f":"$E$18*(1+W75)","v":363754.99999999994},472.8814999999999,null,0,0,null,{"$f":"W53","v":1.2999999999999999E-3},{"$f":"$E$18*(1+AD75)","v":363754.99999999994},472.8814999999999,null,0,0,null,{"$f":"AD53","v":1.2999999999999999E-3},{"$f":"$E$18*(1+AK75)","v":363754.99999999994},472.8814999999999,null,0,0]
["Standard Supply Service Charge",null,"Monthly",null,0.25,1,0.25,null,{"$f":"E54","v":0.25},1,0.25,null,0,0,null,{"$f":"I54","v":0.25},1,0.25,null,0,0,null,{"$f":"P54","v":0.25},1,0.25,null,0,0,null,{"$f":"W54","v":0.25},1,0.25,null,0,0,null,{"$f":"AD54","v":0.25},1,0.25,null,0,0]
["Debt Retirement Charge (DRC)",null,"per kWh",null,7.0000000000000001E-3,{"$f":"E18","v":350000},2450,null,{"$f":"E55","v":7.0000000000000001E-3},{"$f":"E18","v":350000},2450,null,0,0,null,{"$f":"I55","v":7.0000000000000001E-3},{"$f":"J55","v":350000},2450,null,0,0,null,{"$f":"P55","v":7.0000000000000001E-3},{"$f":"Q55","v":350000},2450,null,0,0,null,{"$f":"W55","v":7.0000000000000001E-3},{"$f":"X55","v":350000},2450,null,0,0,null,{"$f":"AD55","v":7.0000000000000001E-3},{"$f":"AE55","v":350000},2450,null,0,0]
["TOU - Off Peak",null,"per kWh",null,8.3000000000000004E-2,{"$f":"0.64*$E$18","v":224000},18592,null,{"$f":"E56","v":8.3000000000000004E-2},{"$f":"F56","v":224000},18592,null,0,0,null,{"$f":"I56","v":8.3000000000000004E-2},{"$f":"J56","v":224000},18592,null,0,0,null,{"$f":"P56","v":8.3000000000000004E-2},{"$f":"Q56","v":224000},18592,null,0,0,null,{"$f":"W56","v":8.3000000000000004E-2},{"$f":"X56","v":224000},18592,null,0,0,null,{"$f":"AD56","v":8.3000000000000004E-2},{"$f":"AE56","v":224000},18592,null,0,0]
["TOU - Mid Peak",null,"per kWh",null,0.128,{"$f":"0.18*$E$18","v":63000},8064,null,{"$f":"E57","v":0.128},{"$f":"F57","v":63000},8064,null,0,0,null,{"$f":"I57","v":0.128},63000,8064,null,0,0,null,{"$f":"P57","v":0.128},63000,8064,null,0,0,null,{"$f":"W57","v":0.128},63000,8064,null,0,0,null,{"$f":"AD57","v":0.128},63000,8064,null,0,0]
["TOU - On Peak",null,"per kWh",null,0.17499999999999999,{"$f":"0.18*$E$18","v":63000},11025,null,0.17499999999999999,{"$f":"F58","v":63000},11025,null,0,0,null,0.17499999999999999,63000,11025,null,0,0,null,0.17499999999999999,63000,11025,null,0,0,null,0.17499999999999999,63000,11025,null,0,0,null,0.17499999999999999,63000,11025,null,0,0]
["Energy - RPP - Tier 1",null,"per kWh",null,9.9000000000000005E-2,{"$f":"IF(AND($S$1=1, E18>=600), 600, IF(AND($S$1=1, AND(E18<600, E18>=0)), E18, IF(AND($S$1=2, E18>=1000), 1000, IF(AND($S$1=2, AND(E18<1000, E18>=0)), E18))))","v":600},{"$f":"F59*E59","v":59.400000000000006},null,9.9000000000000005E-2,{"$f":"F59","v":600},{"$f":"J59*I59","v":59.400000000000006},null,0,0,null,9.9000000000000005E-2,600,{"$f":"Q59*P59","v":59.400000000000006},null,0,0,null,9.9000000000000005E-2,600,{"$f":"X59*W59","v":59.400000000000006},null,0,0,null,9.9000000000000005E-2,600,{"$f":"AE59*AD59","v":59.400000000000006},null,0,0,null,9.9000000000000005E-2,600,{"$f":"AL59*AK59","v":59.400000000000006},null,0,0]
["Energy - RPP - Tier 2",null,"per kWh",null,0.11600000000000001,{"$f":"IF(AND($S$1=1, E18>=600), E18-600, IF(AND($S$1=1, AND(E18<600, E18>=0)), 0, IF(AND($S$1=2, E18>=1000), E18-1000, IF(AND($S$1=2, AND(E18<1000, E18>=0)), 0))))","v":349400},{"$f":"F60*E60","v":40530.400000000001},null,0.11600000000000001,{"$f":"F60","v":349400},{"$f":"J60*I60","v":40530.400000000001},null,0,0,null,0.11600000000000001,349400,{"$f":"Q60*P60","v":40530.400000000001},null,0,0,null,0.11600000000000001,349400,{"$f":"X60*W60","v":40530.400000000001},null,0,0,null,0.11600000000000001,349400,{"$f":"AE60*AD60","v":40530.400000000001},null,0,0,null,0.11600000000000001,349400,{"$f":"AL60*AK60","v":40530.400000000001},null,0,0]
[null,null,null,null,null,null,null,null,null,null,null,null,null,null,null,null,null,null,null,null,"",null,null,null,null,null,null,"",null,null,null,null,null,null,"",null,null,null,null,null,null,""]
["Total Bill on TOU (before Taxes)",null,null,null,null,null,{"$f":"SUM(G52:G58,G51)","v":50084.544399999999},null,null,null,{"$f":"SUM(K52:K58,K51)","v":51048.386799999993},null,{"$f":"K62-G62","v":963.84239999999409},{"$f":"IF((G62)=0,\"\",(M62/G62))","v":1.9244308030482837E-2},null,null,null,{"$f":"SUM(R52:R58,R51)","v":48077.756799999996},null,{"$f":"R62-K62","v":-2970.6299999999974},{"$f":"IF((K62)=0,\"\",(T62/K62))","v":-5.8192436357264045E-2},null,null,null,{"$f":"SUM(Y52:Y58,Y51)","v":48135.556799999991},null,{"$f":"Y62-R62","v":57.799999999995634},1.2022191517886216E-3,null,null,null,{"$f":"SUM(AF52:AF58,AF51)","v":48193.806799999991},null,{"$f":"AF62-Y62","v":58.25},1.2101241550404173E-3,null,null,null,{"$f":"SUM(AM52:AM58,AM51)","v":48236.696799999998},null,{"$f":"AM62-AF62","v":42.890000000006694},8.8994837403063795E-4]
["HST",null,null,null,0.13,null,{"$f":"G62*E63","v":6510.9907720000001},null,0.13,null,{"$f":"K62*I63","v":6636.2902839999997},null,125.29951199999959,1.9244308030482889E-2,null,0.13,null,{"$f":"R62*P63","v":6250.1083839999992},null,{"$f":"R63-K63","v":-386.1819000000005},{"$f":"IF((K63)=0,\"\",(T63/K63))","v":-5.8192436357264163E-2},null,0.13,null,{"$f":"Y62*W63","v":6257.6223839999993},null,{"$f":"Y63-R63","v":7.5140000000001237},1.2022191517887324E-3,null,0.13,null,{"$f":"AF62*AD63","v":6265.1948839999986},null,{"$f":"AF63-Y63","v":7.5724999999993088},1.2101241550403067E-3,null,0.13,null,{"$f":"AM62*AK63","v":6270.7705839999999},null,{"$f":"AM63-AF63","v":5.575700000001234},8.8994837403069606E-4]
["Total Bill (including HST)",null,null,null,null,null,{"$f":"G62+G63","v":56595.535171999996},null,null,null,{"$f":"K62+K63","v":57684.677083999995},null,1089.1419119999991,1.9244308030482937E-2,null,null,null,{"$f":"R62+R63","v":54327.865183999995},null,-3356.8119000000006,-5.81924363572641E-2,null,null,null,{"$f":"Y62+Y63","v":54393.179183999993},null,65.313999999998487,1.2022191517886847E-3,null,null,null,{"$f":"AF62+AF63","v":54459.001683999988},null,65.822499999994761,1.2101241550403208E-3,null,null,null,{"$f":"AM62+AM63","v":54507.467383999996},null,48.465700000007928,8.8994837403064467E-4]
["Ontario Clean Energy Benefit 1",null,null,null,null,null,null,null,null,null,null,null,0,"",null,null,null,null,null,0,"",null,null,null,null,null,0,"",null,null,null,null,null,0,"",null,null,null,null,null,0,""]
["Total Bill on TOU (including OCEB)",null,null,null,null,null,{"$f":"G64+G65","v":56595.535171999996},null,null,null,{"$f":"K64+K65","v":57684.677083999995},null,1089.1419119999991,1.9244308030482937E-2,null,null,null,{"$f":"R64+R65","v":54327.865183999995},null,-3356.8119000000006,{"$f":"IF((K66)=0,\"\",(T66/K66))","v":-5.81924363572641E-2},null,null,null,{"$f":"Y64+Y65","v":54393.179183999993},null,65.313999999998487,{"$f":"IF((R66)=0,\"\",(AA66/R66))","v":1.2022191517886847E-3},null,null,null,{"$f":"AF64+AF65","v":54459.001683999988},null,65.822499999994761,{"$f":"IF((Y66)=0,\"\",(AH66/Y66))","v":1.2101241550403208E-3},null,null,null,{"$f":"AM64+AM65","v":54507.467383999996},null,48.465700000007928,{"$f":"IF((AF66)=0,\"\",(AO66/AF66))","v":8.8994837403064467E-4}]
[null,null,null,null,null,null,null,null,null,null,null,null,null,null,null,null,null,null,null,null,"",null,null,null,null,null,null,"",null,null,null,null,null,null,"",null,null,null,null,null,null,""]
["Total Bill on RPP (before Taxes)",null,null,null,null,null,{"$f":"SUM(G60:G61,G51,G52:G55)","v":52933.944400000008},null,null,null,{"$f":"SUM(K60:K61,K51,K52:K55)","v":53897.786799999994},null,{"$f":"K68-G68","v":963.84239999998681},{"$f":"IF((G68)=0,\"\",(M68/G68))","v":1.8208399372558123E-2},null,null,null,{"$f":"SUM(R60:R61,R51,R52:R55)","v":50927.156799999997},null,{"$f":"R68-K68","v":-2970.6299999999974},-5.5115992258145889E-2,null,null,null,{"$f":"SUM(Y60:Y61,Y51,Y52:Y55)","v":50984.9568},null,{"$f":"SUM(AA60:AA61,AA51,AA52:AA55)","v":57.800000000000182},1.1349543864581143E-3,null,null,null,{"$f":"SUM(AF60:AF61,AF51,AF52:AF55)","v":51043.2068},null,{"$f":"AF68-Y68","v":58.25},1.1424938581099278E-3,null,null,null,{"$f":"SUM(AM60:AM61,AM51,AM52:AM55)","v":51086.096799999999},null,{"$f":"AM68-AF68","v":42.889999999999418},8.402685232542917E-4]
["HST",null,null,null,0.13,null,{"$f":"G68*E69","v":6881.4127720000015},null,0.13,null,{"$f":"K68*I69","v":7006.7122839999993},null,125.29951199999778,{"$f":"IF((G69)=0,\"\",(M69/G69))","v":1.820839937255805E-2},null,0.13,null,{"$f":"R68*P69","v":6620.5303839999997},null,{"$f":"R69-K69","v":-386.18189999999959},-5.5115992258145875E-2,null,0.13,null,{"$f":"Y68*W69","v":6628.0443839999998},null,{"$f":"Y69-R69","v":7.5140000000001237},1.1349543864581295E-3,null,0.13,null,{"$f":"AF68*AD69","v":6635.616884},null,{"$f":"AF69-Y69","v":7.5725000000002183},1.1424938581099608E-3,null,0.13,null,{"$f":"AM68*AK69","v":6641.1925840000004},null,{"$f":"AM69-AF69","v":5.5757000000003245},8.4026852325435198E-4]
["Total Bill (including HST)",null,null,null,null,null,{"$f":"G68+G69","v":59815.357172000011},null,null,null,{"$f":"K68+K69","v":60904.499083999995},null,1089.1419119999846,1.8208399372558116E-2,null,null,null,{"$f":"R68+R69","v":57547.687183999995},null,-3356.8119000000006,-5.5115992258145945E-2,null,null,null,{"$f":"Y68+Y69","v":57613.001184000001},null,65.314000000005763,1.134954386458211E-3,null,null,null,{"$f":"AF68+AF69","v":57678.823684000003},null,65.822500000002037,1.1424938581099631E-3,null,null,null,{"$f":"AM68+AM69","v":57727.289384000003},null,48.465700000000652,8.4026852325431436E-4]
["Ontario Clean Energy Benefit 1",null,null,null,null,null,null,null,null,null,null,null,0,"",null,null,null,null,null,0,"",null,null,null,null,null,0,"",null,null,null,null,null,0,"",null,null,null,null,null,0,""]
["Total Bill on RPP (including OCEB)",null,null,null,null,null,{"$f":"SUM(G70:G71)","v":59815.357172000011},null,null,null,{"$f":"SUM(K70:K71)","v":60904.499083999995},null,1089.1419119999846,1.8208399372558116E-2,null,null,null,{"$f":"SUM(R70:R71)","v":57547.687183999995},null,-3356.8119000000006,-5.5115992258145945E-2,null,null,null,{"$f":"SUM(Y70:Y71)","v":57613.001184000001},null,65.314000000005763,1.134954386458211E-3,null,null,null,{"$f":"SUM(AF70:AF71)","v":57678.823684000003},null,65.822500000002037,1.1424938581099631E-3,null,null,null,{"$f":"SUM(AM70:AM71)","v":57727.289384000003},null,48.465700000000652,8.4026852325431436E-4]
[]
[]
["Loss Factor (%)",null,null,null,3.44E-2,null,null,null,3.9300000000000002E-2,null,null,null,null,null,null,3.9300000000000002E-2,null,null,null,null,null,null,3.9300000000000002E-2,null,null,null,null,null,null,3.9300000000000002E-2,null,null,null,null,null,null,3.9300000000000002E-2]
[]
["Distribution Excluding Rate Riders",null,null,null,"2015 Current Board-Approved",null,null,null,"2016 Test Year 1\nProposed",null,null,null,"Impact\n2016 TEST vs. \n2015 Bridge",null,null,"2017 Test Year 2\nProposed",null,null,null,"Impact\n2017 TEST 2 vs. \n2016 Test 1",null,null,"2018 Test Year 3\nProposed",null,null,null,"Impact\n2018 TEST 3 vs. \n2017 Test 2",null,null,"2019 Test Year 4\nProposed",null,null,null,"Impact\n2019 TEST 4 vs. \n2018 Test 3",null,null,"2020 Test Year 5 \nProposed",null,null,null,"Impact\n2019 TEST 5 vs. \n2019 Test 4"]
[null,null,"Charge Unit",null,"Rate","Volume","Charge",null,"Rate","Volume","Charge",null,"$ Change","% Change",null,"Rate","Volume","Charge",null,"$ Change","% Change",null,"Rate","Volume","Charge",null,"$ Change","% Change",null,"Rate","Volume","Charge",null,"$ Change","% Change",null,"Rate","Volume","Charge",null,"$ Change","% Change"]
[null,null,null,null,"($)",null,"($)",null,"($)",null,"($)",null,null,null,null,"($)",null,"($)",null,null,null,null,"($)",null,"($)",null,null,null,null,"($)",null,"($)",null,null,null,null,"($)",null,"($)"]
["Monthly Service Charge",null,"Monthly",null,{"$f":"'Rates Summary'!$D$30","v":280.08999999999997},1,{"$f":"F80*E80","v":280.08999999999997},null,{"$f":"'Rates Summary'!$E$30","v":105.62},1,{"$f":"J80*I80","v":105.62},null,{"$f":"K80-G80","v":-174.46999999999997},{"$f":"IF((G80)=0,\"\",(M80/G80))","v":-0.62290692277482229},null,{"$f":"'Rates Summary'!$F$30","v":107.49},1,{"$f":"Q80*P80","v":107.49},null,{"$f":"R80-K80","v":1.8699999999999903},{"$f":"IF((K80)=0,\"\",(T80/K80))","v":1.7704980117401913E-2},null,{"$f":"'Rates Summary'!$G$30","v":109.29},1,{"$f":"X80*W80","v":109.29},null,{"$f":"Y80-R80","v":1.8000000000000114},{"$f":"IF((R80)=0,\"\",(AA80/R80))","v":1.6745743790120119E-2},null,{"$f":"'Rates Summary'!$H$30","v":110.99},1,{"$f":"AE80*AD80","v":110.99},null,{"$f":"AF80-Y80","v":1.6999999999999886},{"$f":"IF((Y80)=0,\"\",(AH80/Y80))","v":1.5554945557690443E-2},null,{"$f":"'Rates Summary'!$I$30","v":112.13},1,{"$f":"AL80*AK80","v":112.13},null,{"$f":"AM80-AF80","v":1.1400000000000006},{"$f":"IF((AF80)=0,\"\",(AO80/AF80))","v":1.0271195603207502E-2}]
["Distribution Volumetric Rate",null,"per kW",null,{"$f":"'Rates Summary'!$D$42","v":2.0063},{"$f":"$E$19","v":500},{"$f":"F81*E81","v":1003.15},null,{"$f":"'Rates Summary'!$E$42","v":2.9849000000000001},{"$f":"$E$19","v":500},{"$f":"J81*I81","v":1492.45},null,{"$f":"K81-G81","v":489.30000000000007},{"$f":"IF((G81)=0,\"\",(M81/G81))","v":0.48776354483377371},null,{"$f":"'Rates Summary'!$F$42","v":3.101},{"$f":"$E$19","v":500},{"$f":"Q81*P81","v":1550.5},null,58.049999999999955,{"$f":"IF((K81)=0,\"\",(T81/K81))","v":3.8895775402861037E-2},null,{"$f":"'Rates Summary'!$G$42","v":3.2130000000000001},{"$f":"$E$19","v":500},{"$f":"X81*W81","v":1606.5},null,56,{"$f":"IF((R81)=0,\"\",(AA81/R81))","v":3.6117381489841983E-2},null,{"$f":"'Rates Summary'!$H$42","v":3.3260999999999998},{"$f":"$E$19","v":500},{"$f":"AE81*AD81","v":1663.05},null,56.549999999999955,{"$f":"IF((Y81)=0,\"\",(AH81/Y81))","v":3.520074696545282E-2},null,{"$f":"'Rates Summary'!$I$42","v":3.4096000000000002},{"$f":"$E$19","v":500},{"$f":"AL81*AK81","v":1704.8000000000002},null,41.750000000000227,{"$f":"IF((AF81)=0,\"\",(AO81/AF81))","v":2.5104476714470539E-2}]
["\"Regular\" Distribution Only",null,null,null,null,null,{"$f":"SUM(G80:G81)","v":1283.24},null,null,null,{"$f":"SUM(K80:K81)","v":1598.0700000000002},null,314.83000000000015,0.24533992082541078,null,null,null,{"$f":"SUM(R80:R81)","v":1657.99},null,59.919999999999845,3.7495228619522196E-2,null,null,null,{"$f":"SUM(Y80:Y81)","v":1715.79},null,57.799999999999955,3.4861488911272054E-2,null,null,null,{"$f":"SUM(AF80:AF81)","v":1774.04},null,58.25,3.3949376089148442E-2,null,null,null,{"$f":"SUM(AM80:AM81)","v":1816.9300000000003},null,42.890000000000327,2.417645599873753E-2]
[]
[]
[null,"Residential (kWh) - 100, 250, 500, 800, 1000, 1500, 2000"]
[null,"GS<50kW (kWh) - 1000, 2000, 5000, 10000, 15000"]
[null,"GS>50kW (kW) - 60, 100, 500, 1000"]
[null,"Large User - range appropriate for utility"]
[null,"Lighting Classes and USL - 150 kWh and 1 kW, range appropriate for utility."]
[]
[null,null,"Note that cells with the highlighted color shown to the left indicate quantities that are loss adjusted."]

{"sheet":"Bill Impact GS50-4999 1000kW","index":18,"n_rows":91,"n_cols":42,"rows_kept":91,"cut":false,"hidden":false,"merged":[[19,33,19,34],[19,36,19,38],[20,20,21,20],[20,26,21,26],[19,40,19,41],[19,22,19,24],[19,26,19,27],[19,29,19,31],[20,27,21,27],[20,33,21,33],[20,34,21,34],[20,40,21,40],[20,41,21,41],[2,0,2,9],[9,0,9,13],[10,0,10,13],[13,2,13,13],[13,15,13,26],[19,4,19,6],[19,8,19,10],[19,12,19,13],[19,15,19,17],[19,19,19,20],[64,0,64,2],[20,2,21,2],[20,12,21,12],[20,13,21,13],[20,19,21,19],[76,29,76,31],[76,33,76,34],[77,34,78,34],[65,0,65,2],[70,0,70,2],[71,0,71,2],[76,4,76,6],[76,8,76,10],[76,12,76,13],[77,40,78,40],[77,41,78,41],[76,36,76,38],[76,40,76,41],[77,2,78,2],[77,12,78,12],[77,13,78,13],[77,19,78,19],[77,20,78,20],[77,26,78,26],[77,27,78,27],[77,33,78,33],[76,15,76,17],[76,19,76,20],[76,22,76,24],[76,26,76,27]]}
[null,null,null,null,null,null,null,null,null,null,null,null,"File Number:",{"$f":"EBNUMBER","v":"EB-2015-0083"},null,null,null,null,1]
[null,null,null,null,null,null,null,null,null,null,null,null,"Exhibit:",{"$f":"'Bill Impact Resi 204kWh'!$N$2","v":8}]
[null,null,null,null,null,null,null,null,null,null,null,null,"Tab:",{"$f":"'Bill Impact Resi 204kWh'!$N$3","v":4}]
[null,null,null,null,null,null,null,null,null,null,null,null,"Schedule:",{"$f":"'Bill Impact Resi 204kWh'!$N$4","v":3}]
[null,null,null,null,null,null,null,null,null,null,null,null,"Page:"]
[]
[null,null,null,null,null,null,null,null,null,null,null,null,"Date:",{"$f":"'Bill Impact Resi 204kWh'!$N$7","v":"Settlement"}]
[]
[]
["Appendix 2-W"]
["Bill Impacts"]
[]
[]
["Customer Class:",null,"General Service 50 to 4,999 kW",null,null,null,null,null,null,null,null,null,null,null,null,{"$f":"C14","v":"General Service 50 to 4,999 kW"},null,null,null,null,null,null,null,null,null,null,null,null,null,null,null,null,null,null,null,null,{"$f":"P14","v":"General Service 50 to 4,999 kW"}]
[]
["TOU / non-TOU:",null,"TOU"]
[]
[null,null,"Consumption",null,800000," kWh"]
[null,null,"Load",null,1000,"kW"]
[null,null,null,null,"2015 Current Board-Approved",null,null,null,"2016 Test Year 1\nProposed",null,null,null,"Impact\n2016 TEST vs. \n2015 Bridge",null,null,"2017 Test Year 2\nProposed",null,null,null,"Impact\n2017 TEST 2 vs. \n2016 Test 1",null,null,"2018 Test Year 3\nProposed",null,null,null,"Impact\n2018 TEST 3 vs. \n2017 Test 2",null,null,"2019 Test Year 4\nProposed",null,null,null,"Impact\n2019 TEST 4 vs. \n2018 Test 3",null,null,"2020 Test Year 5 \nProposed",null,null,null,"Impact\n2019 TEST 5 vs. \n2019 Test 4"]
[null,null,"Charge Unit",null,"Rate","Volume","Charge",null,"Rate","Volume","Charge",null,"$ Change","% Change",null,"Rate","Volume","Charge",null,"$ Change","% Change",null,"Rate","Volume","Charge",null,"$ Change","% Change",null,"Rate","Volume","Charge",null,"$ Change","% Change",null,"Rate","Volume","Charge",null,"$ Change","% Change"]
[null,null,null,null,"($)",null,"($)",null,"($)",null,"($)",null,null,null,null,"($)",null,"($)",null,null,null,null,"($)",null,"($)",null,null,null,null,"($)",null,"($)",null,null,null,null,"($)",null,"($)"]
["Monthly Service Charge",null,"Monthly",null,{"$f":"'Rates Summary'!$D$30","v":280.08999999999997},1,{"$f":"F23*E23","v":280.08999999999997},null,{"$f":"'Rates Summary'!$E$30","v":105.62},1,{"$f":"J23*I23","v":105.62},null,{"$f":"K23-G23","v":-174.46999999999997},{"$f":"IF((G23)=0,\"\",(M23/G23))","v":-0.62290692277482229},null,{"$f":"'Rates Summary'!$F$30","v":107.49},1,{"$f":"Q23*P23","v":107.49},null,{"$f":"R23-K23","v":1.8699999999999903},{"$f":"IF((K23)=0,\"\",(T23/K23))","v":1.7704980117401913E-2},null,{"$f":"'Rates Summary'!$G$30","v":109.29},1,{"$f":"X23*W23","v":109.29},null,{"$f":"Y23-R23","v":1.8000000000000114},{"$f":"IF((R23)=0,\"\",(AA23/R23))","v":1.6745743790120119E-2},null,{"$f":"'Rates Summary'!$H$30","v":110.99},1,{"$f":"AE23*AD23","v":110.99},null,{"$f":"AF23-Y23","v":1.6999999999999886},{"$f":"IF((Y23)=0,\"\",(AH23/Y23))","v":1.5554945557690443E-2},null,{"$f":"'Rates Summary'!$I$30","v":112.13},1,{"$f":"AL23*AK23","v":112.13},null,{"$f":"AM23-AF23","v":1.1400000000000006},{"$f":"IF((AF23)=0,\"\",(AO23/AF23))","v":1.0271195603207502E-2}]
["Smart Meter (SMIRR) Rate Rider",null,"Monthly",null,0,1,{"$f":"F24*E24","v":0},null,0,1,{"$f":"J24*I24","v":0},null,{"$f":"K24-G24","v":0},{"$f":"IF((G24)=0,\"\",(M24/G24))","v":""},null,0,1,{"$f":"Q24*P24","v":0},null,0,{"$f":"IF((K24)=0,\"\",(T24/K24))","v":""},null,0,1,{"$f":"X24*W24","v":0},null,0,{"$f":"IF((R24)=0,\"\",(AA24/R24))","v":""},null,0,1,{"$f":"AE24*AD24","v":0},null,0,{"$f":"IF((Y24)=0,\"\",(AH24/Y24))","v":""},null,0,1,{"$f":"AL24*AK24","v":0},null,0,{"$f":"IF((AF24)=0,\"\",(AO24/AF24))","v":""}]
["Rate Rider Smart Meters Capital (2016)",null,"Monthly",null,0,1,0,null,0,1,{"$f":"J25*I25","v":0},null,{"$f":"K25-G25","v":0},"",null,0,1,{"$f":"Q25*P25","v":0},null,0,"",null,0,1,{"$f":"X25*W25","v":0},null,0,"",null,0,1,{"$f":"AE25*AD25","v":0},null,0,"",null,0,1,{"$f":"AL25*AK25","v":0},null,0,""]
["Rate Rider Recovery of Stranded Meters",null,"Monthly",null,0,1,0,null,0,1,0,null,0,"",null,0,1,0,null,0,"",null,0,1,0,null,0,"",null,0,1,0,null,0,"",null,0,1,0,null,0,""]
[null,null,null,null,null,1,0,null,null,1,0,null,0,"",null,null,1,0,null,0,"",null,null,1,0,null,0,"",null,null,1,0,null,0,"",null,null,1,0,null,0,""]
[null,null,null,null,null,1,0,null,null,1,0,null,0,"",null,null,1,0,null,0,"",null,null,1,0,null,0,"",null,null,1,0,null,0,"",null,null,1,0,null,0,""]
["Distribution Volumetric Rate",null,"per kW",null,{"$f":"'Rates Summary'!$D$42","v":2.0063},{"$f":"$E$19","v":1000},2006.3,null,{"$f":"'Rates Summary'!$E$42","v":2.9849000000000001},{"$f":"$E$19","v":1000},2984.9,null,978.60000000000014,0.48776354483377371,null,{"$f":"'Rates Summary'!$F$42","v":3.101},{"$f":"$E$19","v":1000},3101,null,116.09999999999991,3.8895775402861037E-2,null,{"$f":"'Rates Summary'!$G$42","v":3.2130000000000001},{"$f":"$E$19","v":1000},3213,null,112,3.6117381489841983E-2,null,{"$f":"'Rates Summary'!$H$42","v":3.3260999999999998},{"$f":"$E$19","v":1000},3326.1,null,113.09999999999991,3.520074696545282E-2,null,{"$f":"'Rates Summary'!$I$42","v":3.4096000000000002},{"$f":"$E$19","v":1000},3409.6000000000004,null,83.500000000000455,2.5104476714470539E-2]
["Rate Rider Tax Change (2015)",null,"per kW",null,-9.9000000000000008E-3,{"$f":"$E$19","v":1000},-9.9,null,0,{"$f":"$E$19","v":1000},0,null,9.9,-1,null,0,{"$f":"$E$19","v":1000},0,null,0,"",null,0,{"$f":"$E$19","v":1000},0,null,0,"",null,0,{"$f":"$E$19","v":1000},0,null,0,"",null,0,{"$f":"$E$19","v":1000},0,null,0,""]
["LRAM VA (2016)",null,"per kW",null,0,1000,0,null,{"$f":"'Rates Summary'!E7","v":2.93E-2},1000,29.3,null,29.3,1,null,0,1000,0,null,-29.3,-1,null,0,1000,0,null,0,"",null,0,1000,0,null,0,"",null,0,1000,0,null,0,""]
["Rate Rider Incremental Capital 2012 True-Up (2016)",null,"per kW",null,0,1000,0,null,{"$f":"'Rates Summary'!E9","v":0.04},1000,40,null,40,1,null,0,1000,0,null,-40,-1,null,0,1000,0,null,0,"",null,0,1000,0,null,0,"",null,0,1000,0,null,0,""]
[null,null,null,null,null,1000,0,null,null,1000,0,null,0,{"$f":"IF((G33)=0,\"\",(M33/G33))","v":""},null,null,1000,0,null,0,"",null,null,1000,0,null,0,"",null,null,1000,0,null,0,"",null,null,1000,0,null,0,""]
[null,null,null,null,null,1000,0,null,null,1000,0,null,0,"",null,null,1000,0,null,0,"",null,null,1000,0,null,0,"",null,null,1000,0,null,0,"",null,null,1000,0,null,0,""]
[null,null,null,null,null,1000,0,null,null,1000,0,null,0,"",null,null,1000,0,null,0,"",null,null,1000,0,null,0,"",null,null,1000,0,null,0,"",null,null,1000,0,null,0,""]
[null,null,null,null,null,1000,0,null,null,1000,0,null,0,"",null,null,1000,0,null,0,"",null,null,1000,0,null,0,"",null,null,1000,0,null,0,"",null,null,1000,0,null,0,""]
[null,null,null,null,null,1000,0,null,null,1000,0,null,0,"",null,null,1000,0,null,0,"",null,null,1000,0,null,0,"",null,null,1000,0,null,0,"",null,null,1000,0,null,0,""]
[null,null,null,null,null,1000,0,null,null,1000,0,null,0,"",null,null,1000,0,null,0,"",null,null,1000,0,null,0,"",null,null,1000,0,null,0,"",null,null,1000,0,null,0,""]
["Sub-Total A (excluding pass through)",null,null,null,null,null,{"$f":"SUM(G23:G38)","v":2276.4899999999998},null,null,null,{"$f":"SUM(K23:K38)","v":3159.82},null,883.33000000000038,0.3880227894697541,null,null,null,{"$f":"SUM(R23:R38)","v":3208.49},null,48.669999999999618,1.5402776107499672E-2,null,null,null,{"$f":"SUM(Y23:Y38)","v":3322.29},null,113.80000000000018,3.5468397906803568E-2,null,null,null,{"$f":"SUM(AF23:AF38)","v":3437.0899999999997},null,114.79999999999973,3.4554478988890108E-2,null,null,null,{"$f":"SUM(AM23:AM38)","v":3521.7300000000005},null,84.640000000000782,2.4625482603016152E-2]
["Deferral/Variance Account Disposition Rate Rider (2016)",null,"per kW",null,0,1000,{"$f":"F40*E40","v":0},null,{"$f":"'Rates Summary'!E5","v":0.70479999999999998},1000,{"$f":"J40*I40","v":704.8},null,{"$f":"K40-G40","v":704.8},1,null,0,1000,{"$f":"Q40*P40","v":0},null,-704.8,-1,null,0,1000,{"$f":"X40*W40","v":0},null,0,"",null,0,1000,{"$f":"AE40*AD40","v":0},null,0,"",null,0,1000,{"$f":"AL40*AK40","v":0},null,0,""]
["Deferral/Variance Account Disposition Rate Rider (2016), excluding Wholesale Market Participants",null,"per kW",null,0,1000,{"$f":"F41*E41","v":0},null,{"$f":"'Rates Summary'!J5","v":-1.0947},1000,{"$f":"J41*I41","v":-1094.7},null,{"$f":"K41-G41","v":-1094.7},1,null,0,1000,{"$f":"Q41*P41","v":0},null,1094.7,-1,null,0,1000,{"$f":"X41*W41","v":0},null,0,"",null,0,1000,{"$f":"AE41*AD41","v":0},null,0,"",null,0,1000,{"$f":"AL41*AK41","v":0},null,0,""]
["Rate Rider CGAAP Account 1576 (2016)",null,"per kW",null,0,1000,0,null,{"$f":"'Rates Summary'!$E$8","v":-1.0874999999999999},1000,-1087.5,null,-1087.5,1,null,0,1000,0,null,1087.5,-1,null,0,1000,0,null,0,"",null,0,1000,0,null,0,"",null,0,1000,0,null,0,""]
["Disposition of Global Adjustment (2015)  \nApplicable to Non-RPP Customers, excluding Wholesale Market Participants",null,"per kW",null,5.7342000000000004,1000,5734.2000000000007,null,0,1000,0,null,-5734.2000000000007,-1,null,0,1000,0,null,0,"",null,0,1000,0,null,0,"",null,0,1000,0,null,0,"",null,0,1000,0,null,0,""]
["Disposition of Global Adjustment (2016)\nApplicable to Non-RPP Customers, excluding Wholesale Market Participants",null,"per kW",null,0,1000,0,null,{"$f":"'Rates Summary'!J6","v":7.4691999999999998},1000,7469.2,null,7469.2,"",null,0,1000,0,null,-7469.2,-1,null,0,1000,0,null,0,"",null,0,1000,0,null,0,"",null,0,1000,0,null,0,""]
["Low Voltage Service Charge",null,"per kW",null,0.252,1000,{"$f":"F45*E45","v":252},null,{"$f":"'Rates Summary'!E15","v":0.46629999999999999},1000,{"$f":"J45*I45","v":466.3},null,{"$f":"K45-G45","v":214.3},0.85039682539682548,null,{"$f":"I45","v":0.46629999999999999},1000,{"$f":"Q45*P45","v":466.3},null,{"$f":"R45-K45","v":0},0,null,{"$f":"P45","v":0.46629999999999999},1000,{"$f":"X45*W45","v":466.3},null,{"$f":"Y45-R45","v":0},0,null,{"$f":"W45","v":0.46629999999999999},1000,{"$f":"AE45*AD45","v":466.3},null,{"$f":"AF45-Y45","v":0},0,null,{"$f":"AD45","v":0.46629999999999999},1000,{"$f":"AL45*AK45","v":466.3},null,{"$f":"AM45-AF45","v":0},0]
["Line Losses on Cost of Power",null,"per kWh",null,{"$f":"IF(ISBLANK(C16)=TRUE, 0, IF(C16=\"TOU\", 0.64*$E$56+0.18*$E$57+0.18*$E$58, IF(AND(C16=\"non-TOU\", F60>0), E60,E59)))","v":0.10766000000000001},{"$f":"$E$18*(1+$E$75)-$E$18","v":27520},2962.8032000000003,null,{"$f":"E46","v":0.10766000000000001},{"$f":"$E$18*(1+$I$75)-$E$18","v":31439.999999999884},3384.8303999999875,null,422.02719999998726,0.14244186046511195,null,{"$f":"I46","v":0.10766000000000001},{"$f":"$E$18*(1+$I$75)-$E$18","v":31439.999999999884},{"$f":"Q46*P46","v":3384.8303999999875},null,{"$f":"R46-K46","v":0},0,null,{"$f":"P46","v":0.10766000000000001},{"$f":"$E$18*(1+$I$75)-$E$18","v":31439.999999999884},{"$f":"X46*W46","v":3384.8303999999875},null,{"$f":"Y46-R46","v":0},0,null,{"$f":"W46","v":0.10766000000000001},{"$f":"$E$18*(1+$I$75)-$E$18","v":31439.999999999884},{"$f":"AE46*AD46","v":3384.8303999999875},null,{"$f":"AF46-Y46","v":0},0,null,{"$f":"AD46","v":0.10766000000000001},{"$f":"$E$18*(1+$I$75)-$E$18","v":31439.999999999884},{"$f":"AL46*AK46","v":3384.8303999999875},null,{"$f":"AM46-AF46","v":0},0]
["Smart Meter Entity Charge",null,null,null,0,1,{"$f":"F47*E47","v":0},null,{"$f":"E47","v":0},1,{"$f":"J47*I47","v":0},null,{"$f":"I47","v":0},"",null,{"$f":"M47","v":0},1,{"$f":"Q47*P47","v":0},null,{"$f":"R47-K47","v":0},"",null,{"$f":"P47","v":0},1,{"$f":"X47*W47","v":0},null,{"$f":"Y47-R47","v":0},"",null,{"$f":"W47","v":0},1,{"$f":"AE47*AD47","v":0},null,{"$f":"AF47-Y47","v":0},"",null,{"$f":"AD47","v":0},1,{"$f":"AL47*AK47","v":0},null,{"$f":"AM47-AF47","v":0},""]
["Sub-Total B - Distribution (includes Sub-Total A)",null,null,null,null,null,{"$f":"SUM(G40:G47)+G39","v":11225.493200000001},null,null,null,{"$f":"SUM(K40:K47)+K39","v":13002.750399999986},null,{"$f":"K48-G48","v":1777.2571999999855},0.15832330645391912,null,null,null,{"$f":"SUM(R40:R47)+R39","v":7059.6203999999871},null,{"$f":"R48-K48","v":-5943.1299999999992},-0.4570671448096093,null,null,null,{"$f":"SUM(Y40:Y47)+Y39","v":7173.4203999999881},null,{"$f":"Y48-R48","v":113.80000000000109},1.6119846897150632E-2,null,null,null,{"$f":"SUM(AF40:AF47)+AF39","v":7288.2203999999874},null,{"$f":"AF48-Y48","v":114.79999999999927},1.6003523228612038E-2,null,null,null,{"$f":"SUM(AM40:AM47)+AM39","v":7372.8603999999887},null,{"$f":"AM48-AF48","v":84.640000000001237},1.1613260213700643E-2]
["RTSR - Network",null,"per kW",null,2.6313,{"$f":"$E$19","v":1000},{"$f":"F49*E49","v":2631.3},null,{"$f":"'Rates Summary'!E17","v":2.7797000000000001},{"$f":"$E$19","v":1000},{"$f":"J49*I49","v":2779.7000000000003},null,148.40000000000009,5.6397978185687717E-2,null,{"$f":"I49","v":2.7797000000000001},{"$f":"$E$19","v":1000},{"$f":"Q49*P49","v":2779.7000000000003},null,0,0,null,{"$f":"P49","v":2.7797000000000001},{"$f":"$E$19","v":1000},{"$f":"X49*W49","v":2779.7000000000003},null,0,0,null,{"$f":"W49","v":2.7797000000000001},{"$f":"$E$19","v":1000},{"$f":"AE49*AD49","v":2779.7000000000003},null,0,0,null,{"$f":"AD49","v":2.7797000000000001},{"$f":"$E$19","v":1000},{"$f":"AL49*AK49","v":2779.7000000000003},null,0,0]
["RTSR - Line and Transformation Connection",null,"per kW",null,2.0127999999999999,1000,{"$f":"F50*E50","v":2012.8},null,{"$f":"'Rates Summary'!E18","v":2.2225000000000001},1000,{"$f":"J50*I50","v":2222.5},null,209.70000000000005,0.10418322734499208,null,{"$f":"I50","v":2.2225000000000001},1000,{"$f":"Q50*P50","v":2222.5},null,0,0,null,{"$f":"P50","v":2.2225000000000001},1000,{"$f":"X50*W50","v":2222.5},null,0,0,null,{"$f":"W50","v":2.2225000000000001},1000,{"$f":"AE50*AD50","v":2222.5},null,0,0,null,{"$f":"AD50","v":2.2225000000000001},1000,{"$f":"AL50*AK50","v":2222.5},null,0,0]
["Sub-Total C - Delivery (including Sub-Total B)",null,null,null,null,null,{"$f":"SUM(G48:G50)","v":15869.593199999999},null,null,null,{"$f":"SUM(K48:K50)","v":18004.950399999987},null,2135.3571999999876,0.13455651780664343,null,null,null,{"$f":"SUM(R48:R50)","v":12061.820399999988},null,-5943.1299999999992,-0.33008310869881674,null,null,null,{"$f":"SUM(Y48:Y50)","v":12175.620399999989},null,113.80000000000109,9.4347284428145852E-3,null,null,null,{"$f":"SUM(AF48:AF50)","v":12290.420399999988},null,114.79999999999927,9.4286776548979292E-3,null,null,null,{"$f":"SUM(AM48:AM50)","v":12375.060399999989},null,84.640000000001237,6.8866643487639628E-3]
["Wholesale Market Service Charge (WMSC)",null,"per kWh",null,4.4000000000000003E-3,{"$f":"$E$18*(1+$E$75)","v":827520},{"$f":"F52*E52","v":3641.0880000000002},null,{"$f":"E52","v":4.4000000000000003E-3},{"$f":"$E$18*(1+I75)","v":831439.99999999988},{"$f":"J52*I52","v":3658.3359999999998},null,17.247999999999593,4.7370456303169797E-3,null,{"$f":"I52","v":4.4000000000000003E-3},{"$f":"$E$18*(1+P75)","v":831439.99999999988},{"$f":"Q52*P52","v":3658.3359999999998},null,0,0,null,{"$f":"P52","v":4.4000000000000003E-3},{"$f":"$E$18*(1+W75)","v":831439.99999999988},{"$f":"X52*W52","v":3658.3359999999998},null,0,0,null,{"$f":"W52","v":4.4000000000000003E-3},{"$f":"$E$18*(1+AD75)","v":831439.99999999988},{"$f":"AE52*AD52","v":3658.3359999999998},null,0,0,null,{"$f":"AD52","v":4.4000000000000003E-3},{"$f":"$E$18*(1+AK75)","v":831439.99999999988},{"$f":"AL52*AK52","v":3658.3359999999998},null,0,0]
["Rural and Remote Rate Protection (RRRP)",null,"per kWh",null,1.2999999999999999E-3,{"$f":"$E$18*(1+$E$75)","v":827520},1075.7759999999998,null,{"$f":"E53","v":1.2999999999999999E-3},{"$f":"$E$18*(1+I75)","v":831439.99999999988},1080.8719999999998,null,5.0960000000000036,4.7370456303170959E-3,null,{"$f":"I53","v":1.2999999999999999E-3},{"$f":"$E$18*(1+P75)","v":831439.99999999988},1080.8719999999998,null,0,0,null,{"$f":"P53","v":1.2999999999999999E-3},{"$f":"$E$18*(1+W75)","v":831439.99999999988},1080.8719999999998,null,0,0,null,{"$f":"W53","v":1.2999999999999999E-3},{"$f":"$E$18*(1+AD75)","v":831439.99999999988},1080.8719999999998,null,0,0,null,{"$f":"AD53","v":1.2999999999999999E-3},{"$f":"$E$18*(1+AK75)","v":831439.99999999988},1080.8719999999998,null,0,0]
["Standard Supply Service Charge",null,"Monthly",null,0.25,1,0.25,null,{"$f":"E54","v":0.25},1,0.25,null,0,0,null,{"$f":"I54","v":0.25},1,0.25,null,0,0,null,{"$f":"P54","v":0.25},1,0.25,null,0,0,null,{"$f":"W54","v":0.25},1,0.25,null,0,0,null,{"$f":"AD54","v":0.25},1,0.25,null,0,0]
["Debt Retirement Charge (DRC)",null,"per kWh",null,7.0000000000000001E-3,{"$f":"E18","v":800000},5600,null,{"$f":"E55","v":7.0000000000000001E-3},{"$f":"E18","v":800000},5600,null,0,0,null,{"$f":"I55","v":7.0000000000000001E-3},{"$f":"J55","v":800000},5600,null,0,0,null,{"$f":"P55","v":7.0000000000000001E-3},{"$f":"Q55","v":800000},5600,null,0,0,null,{"$f":"W55","v":7.0000000000000001E-3},{"$f":"X55","v":800000},5600,null,0,0,null,{"$f":"AD55","v":7.0000000000000001E-3},{"$f":"AE55","v":800000},5600,null,0,0]
["TOU - Off Peak",null,"per kWh",null,8.3000000000000004E-2,{"$f":"0.64*$E$18","v":512000},42496,null,{"$f":"E56","v":8.3000000000000004E-2},{"$f":"F56","v":512000},42496,null,0,0,null,{"$f":"I56","v":8.3000000000000004E-2},{"$f":"J56","v":512000},42496,null,0,0,null,{"$f":"P56","v":8.3000000000000004E-2},{"$f":"Q56","v":512000},42496,null,0,0,null,{"$f":"W56","v":8.3000000000000004E-2},{"$f":"X56","v":512000},42496,null,0,0,null,{"$f":"AD56","v":8.3000000000000004E-2},{"$f":"AE56","v":512000},42496,null,0,0]
["TOU - Mid Peak",null,"per kWh",null,0.128,{"$f":"0.18*$E$18","v":144000},18432,null,{"$f":"E57","v":0.128},{"$f":"F57","v":144000},18432,null,0,0,null,{"$f":"I57","v":0.128},144000,18432,null,0,0,null,{"$f":"P57","v":0.128},144000,18432,null,0,0,null,{"$f":"W57","v":0.128},144000,18432,null,0,0,null,{"$f":"AD57","v":0.128},144000,18432,null,0,0]
["TOU - On Peak",null,"per kWh",null,0.17499999999999999,{"$f":"0.18*$E$18","v":144000},25200,null,0.17499999999999999,{"$f":"F58","v":144000},25200,null,0,0,null,0.17499999999999999,144000,25200,null,0,0,null,0.17499999999999999,144000,25200,null,0,0,null,0.17499999999999999,144000,25200,null,0,0,null,0.17499999999999999,144000,25200,null,0,0]
["Energy - RPP - Tier 1",null,"per kWh",null,9.9000000000000005E-2,{"$f":"IF(AND($S$1=1, E18>=600), 600, IF(AND($S$1=1, AND(E18<600, E18>=0)), E18, IF(AND($S$1=2, E18>=1000), 1000, IF(AND($S$1=2, AND(E18<1000, E18>=0)), E18))))","v":600},{"$f":"F59*E59","v":59.400000000000006},null,9.9000000000000005E-2,{"$f":"F59","v":600},{"$f":"J59*I59","v":59.400000000000006},null,0,0,null,9.9000000000000005E-2,600,{"$f":"Q59*P59","v":59.400000000000006},null,0,0,null,9.9000000000000005E-2,600,{"$f":"X59*W59","v":59.400000000000006},null,0,0,null,9.9000000000000005E-2,600,{"$f":"AE59*AD59","v":59.400000000000006},null,0,0,null,9.9000000000000005E-2,600,{"$f":"AL59*AK59","v":59.400000000000006},null,0,0]
["Energy - RPP - Tier 2",null,"per kWh",null,0.11600000000000001,{"$f":"IF(AND($S$1=1, E18>=600), E18-600, IF(AND($S$1=1, AND(E18<600, E18>=0)), 0, IF(AND($S$1=2, E18>=1000), E18-1000, IF(AND($S$1=2, AND(E18<1000, E18>=0)), 0))))","v":799400},{"$f":"F60*E60","v":92730.400000000009},null,0.11600000000000001,{"$f":"F60","v":799400},{"$f":"J60*I60","v":92730.400000000009},null,0,0,null,0.11600000000000001,799400,{"$f":"Q60*P60","v":92730.400000000009},null,0,0,null,0.11600000000000001,799400,{"$f":"X60*W60","v":92730.400000000009},null,0,0,null,0.11600000000000001,799400,{"$f":"AE60*AD60","v":92730.400000000009},null,0,0,null,0.11600000000000001,799400,{"$f":"AL60*AK60","v":92730.400000000009},null,0,0]
[null,null,null,null,null,null,null,null,null,null,null,null,null,null,null,null,null,null,null,null,"",null,null,null,null,null,null,"",null,null,null,null,null,null,"",null,null,null,null,null,null,""]
["Total Bill on TOU (before Taxes)",null,null,null,null,null,{"$f":"SUM(G52:G58,G51)","v":112314.7072},null,null,null,{"$f":"SUM(K52:K58,K51)","v":114472.40839999999},null,{"$f":"K62-G62","v":2157.7011999999813},{"$f":"IF((G62)=0,\"\",(M62/G62))","v":1.9211207986837731E-2},null,null,null,{"$f":"SUM(R52:R58,R51)","v":108529.27839999998},null,{"$f":"R62-K62","v":-5943.1300000000047},{"$f":"IF((K62)=0,\"\",(T62/K62))","v":-5.1917576323134346E-2},null,null,null,{"$f":"SUM(Y52:Y58,Y51)","v":108643.07839999998},null,{"$f":"Y62-R62","v":113.80000000000291},1.0485649741498967E-3,null,null,null,{"$f":"SUM(AF52:AF58,AF51)","v":108757.87839999999},null,{"$f":"AF62-Y62","v":114.80000000000291},1.0566710893199702E-3,null,null,null,{"$f":"SUM(AM52:AM58,AM51)","v":108842.51839999999},null,{"$f":"AM62-AF62","v":84.639999999999418},7.78242470754187E-4]
["HST",null,null,null,0.13,null,{"$f":"G62*E63","v":14600.911936},null,0.13,null,{"$f":"K62*I63","v":14881.413091999999},null,280.50115599999845,1.921120798683779E-2,null,0.13,null,{"$f":"R62*P63","v":14108.806191999998},null,{"$f":"R63-K63","v":-772.60690000000068},{"$f":"IF((K63)=0,\"\",(T63/K63))","v":-5.1917576323134353E-2},null,0.13,null,{"$f":"Y62*W63","v":14123.600191999998},null,{"$f":"Y63-R63","v":14.793999999999869},1.0485649741498605E-3,null,0.13,null,{"$f":"AF62*AD63","v":14138.524191999999},null,{"$f":"AF63-Y63","v":14.924000000000888},1.0566710893200062E-3,null,0.13,null,{"$f":"AM62*AK63","v":14149.527391999998},null,{"$f":"AM63-AF63","v":11.003199999999197},7.782424707541355E-4]
["Total Bill (including HST)",null,null,null,null,null,{"$f":"G62+G63","v":126915.61913600001},null,null,null,{"$f":"K62+K63","v":129353.82149199999},null,2438.2023559999798,1.9211207986837738E-2,null,null,null,{"$f":"R62+R63","v":122638.08459199998},null,-6715.7369000000035,-5.1917576323134332E-2,null,null,null,{"$f":"Y62+Y63","v":122766.67859199998},null,128.59399999999732,1.0485649741498479E-3,null,null,null,{"$f":"AF62+AF63","v":122896.40259199998},null,129.72400000000198,1.0566710893199595E-3,null,null,null,{"$f":"AM62+AM63","v":122992.04579199999},null,95.643200000005891,7.7824247075424034E-4]
["Ontario Clean Energy Benefit 1",null,null,null,null,null,null,null,null,null,null,null,0,"",null,null,null,null,null,0,"",null,null,null,null,null,0,"",null,null,null,null,null,0,"",null,null,null,null,null,0,""]
["Total Bill on TOU (including OCEB)",null,null,null,null,null,{"$f":"G64+G65","v":126915.61913600001},null,null,null,{"$f":"K64+K65","v":129353.82149199999},null,2438.2023559999798,1.9211207986837738E-2,null,null,null,{"$f":"R64+R65","v":122638.08459199998},null,-6715.7369000000035,{"$f":"IF((K66)=0,\"\",(T66/K66))","v":-5.1917576323134332E-2},null,null,null,{"$f":"Y64+Y65","v":122766.67859199998},null,128.59399999999732,{"$f":"IF((R66)=0,\"\",(AA66/R66))","v":1.0485649741498479E-3},null,null,null,{"$f":"AF64+AF65","v":122896.40259199998},null,129.72400000000198,{"$f":"IF((Y66)=0,\"\",(AH66/Y66))","v":1.0566710893199595E-3},null,null,null,{"$f":"AM64+AM65","v":122992.04579199999},null,95.643200000005891,{"$f":"IF((AF66)=0,\"\",(AO66/AF66))","v":7.7824247075424034E-4}]
[null,null,null,null,null,null,null,null,null,null,null,null,null,null,null,null,null,null,null,null,"",null,null,null,null,null,null,"",null,null,null,null,null,null,"",null,null,null,null,null,null,""]
["Total Bill on RPP (before Taxes)",null,null,null,null,null,{"$f":"SUM(G60:G61,G51,G52:G55)","v":118917.10720000001},null,null,null,{"$f":"SUM(K60:K61,K51,K52:K55)","v":121074.80839999999},null,{"$f":"K68-G68","v":2157.7011999999813},{"$f":"IF((G68)=0,\"\",(M68/G68))","v":1.8144581976511292E-2},null,null,null,{"$f":"SUM(R60:R61,R51,R52:R55)","v":115131.67839999999},null,{"$f":"R68-K68","v":-5943.1300000000047},-4.9086429113853587E-2,null,null,null,{"$f":"SUM(Y60:Y61,Y51,Y52:Y55)","v":115245.47839999999},null,{"$f":"SUM(AA60:AA61,AA51,AA52:AA55)","v":113.80000000000109},9.884334318885522E-4,null,null,null,{"$f":"SUM(AF60:AF61,AF51,AF52:AF55)","v":115360.2784},null,{"$f":"AF68-Y68","v":114.80000000000291},9.9613452600325991E-4,null,null,null,{"$f":"SUM(AM60:AM61,AM51,AM52:AM55)","v":115444.9184},null,{"$f":"AM68-AF68","v":84.639999999999418},7.3370141936134081E-4]
["HST",null,null,null,0.13,null,{"$f":"G68*E69","v":15459.223936000002},null,0.13,null,{"$f":"K68*I69","v":15739.725092000001},null,280.50115599999845,{"$f":"IF((G69)=0,\"\",(M69/G69))","v":1.8144581976511347E-2},null,0.13,null,{"$f":"R68*P69","v":14967.118192},null,{"$f":"R69-K69","v":-772.60690000000068},-4.9086429113853587E-2,null,0.13,null,{"$f":"Y68*W69","v":14981.912192},null,{"$f":"Y69-R69","v":14.793999999999869},9.8843343188853398E-4,null,0.13,null,{"$f":"AF68*AD69","v":14996.836192000001},null,{"$f":"AF69-Y69","v":14.924000000000888},9.9613452600329374E-4,null,0.13,null,{"$f":"AM68*AK69","v":15007.839392},null,{"$f":"AM69-AF69","v":11.003199999999197},7.3370141936129223E-4]
["Total Bill (including HST)",null,null,null,null,null,{"$f":"G68+G69","v":134376.33113600002},null,null,null,{"$f":"K68+K69","v":136814.53349199999},null,2438.2023559999652,1.8144581976511188E-2,null,null,null,{"$f":"R68+R69","v":130098.79659199998},null,-6715.7369000000035,-4.908642911385358E-2,null,null,null,{"$f":"Y68+Y69","v":130227.390592},null,128.59400000001187,9.8843343188863416E-4,null,null,null,{"$f":"AF68+AF69","v":130357.114592},null,129.72400000000198,9.9613452600324972E-4,null,null,null,{"$f":"AM68+AM69","v":130452.75779199999},null,95.643199999991339,7.3370141936127933E-4]
["Ontario Clean Energy Benefit 1",null,null,null,null,null,null,null,null,null,null,null,0,"",null,null,null,null,null,0,"",null,null,null,null,null,0,"",null,null,null,null,null,0,"",null,null,null,null,null,0,""]
["Total Bill on RPP (including OCEB)",null,null,null,null,null,{"$f":"SUM(G70:G71)","v":134376.33113600002},null,null,null,{"$f":"SUM(K70:K71)","v":136814.53349199999},null,2438.2023559999652,1.8144581976511188E-2,null,null,null,{"$f":"SUM(R70:R71)","v":130098.79659199998},null,-6715.7369000000035,-4.908642911385358E-2,null,null,null,{"$f":"SUM(Y70:Y71)","v":130227.390592},null,128.59400000001187,9.8843343188863416E-4,null,null,null,{"$f":"SUM(AF70:AF71)","v":130357.114592},null,129.72400000000198,9.9613452600324972E-4,null,null,null,{"$f":"SUM(AM70:AM71)","v":130452.75779199999},null,95.643199999991339,7.3370141936127933E-4]
[]
[]
["Loss Factor (%)",null,null,null,3.44E-2,null,null,null,3.9300000000000002E-2,null,null,null,null,null,null,3.9300000000000002E-2,null,null,null,null,null,null,3.9300000000000002E-2,null,null,null,null,null,null,3.9300000000000002E-2,null,null,null,null,null,null,3.9300000000000002E-2]
[]
["Distribution Excluding Rate Riders",null,null,null,"2015 Current Board-Approved",null,null,null,"2016 Test Year 1\nProposed",null,null,null,"Impact\n2016 TEST vs. \n2015 Bridge",null,null,"2017 Test Year 2\nProposed",null,null,null,"Impact\n2017 TEST 2 vs. \n2016 Test 1",null,null,"2018 Test Year 3\nProposed",null,null,null,"Impact\n2018 TEST 3 vs. \n2017 Test 2",null,null,"2019 Test Year 4\nProposed",null,null,null,"Impact\n2019 TEST 4 vs. \n2018 Test 3",null,null,"2020 Test Year 5 \nProposed",null,null,null,"Impact\n2019 TEST 5 vs. \n2019 Test 4"]
[null,null,"Charge Unit",null,"Rate","Volume","Charge",null,"Rate","Volume","Charge",null,"$ Change","% Change",null,"Rate","Volume","Charge",null,"$ Change","% Change",null,"Rate","Volume","Charge",null,"$ Change","% Change",null,"Rate","Volume","Charge",null,"$ Change","% Change",null,"Rate","Volume","Charge",null,"$ Change","% Change"]
[null,null,null,null,"($)",null,"($)",null,"($)",null,"($)",null,null,null,null,"($)",null,"($)",null,null,null,null,"($)",null,"($)",null,null,null,null,"($)",null,"($)",null,null,null,null,"($)",null,"($)"]
["Monthly Service Charge",null,"Monthly",null,{"$f":"'Rates Summary'!$D$30","v":280.08999999999997},1,{"$f":"F80*E80","v":280.08999999999997},null,{"$f":"'Rates Summary'!$E$30","v":105.62},1,{"$f":"J80*I80","v":105.62},null,{"$f":"K80-G80","v":-174.46999999999997},{"$f":"IF((G80)=0,\"\",(M80/G80))","v":-0.62290692277482229},null,{"$f":"'Rates Summary'!$F$30","v":107.49},1,{"$f":"Q80*P80","v":107.49},null,{"$f":"R80-K80","v":1.8699999999999903},{"$f":"IF((K80)=0,\"\",(T80/K80))","v":1.7704980117401913E-2},null,{"$f":"'Rates Summary'!$G$30","v":109.29},1,{"$f":"X80*W80","v":109.29},null,{"$f":"Y80-R80","v":1.8000000000000114},{"$f":"IF((R80)=0,\"\",(AA80/R80))","v":1.6745743790120119E-2},null,{"$f":"'Rates Summary'!$H$30","v":110.99},1,{"$f":"AE80*AD80","v":110.99},null,{"$f":"AF80-Y80","v":1.6999999999999886},{"$f":"IF((Y80)=0,\"\",(AH80/Y80))","v":1.5554945557690443E-2},null,{"$f":"'Rates Summary'!$I$30","v":112.13},1,{"$f":"AL80*AK80","v":112.13},null,{"$f":"AM80-AF80","v":1.1400000000000006},{"$f":"IF((AF80)=0,\"\",(AO80/AF80))","v":1.0271195603207502E-2}]
["Distribution Volumetric Rate",null,"per kW",null,{"$f":"'Rates Summary'!$D$42","v":2.0063},{"$f":"$E$19","v":1000},{"$f":"F81*E81","v":2006.3},null,{"$f":"'Rates Summary'!$E$42","v":2.9849000000000001},{"$f":"$E$19","v":1000},{"$f":"J81*I81","v":2984.9},null,{"$f":"K81-G81","v":978.60000000000014},{"$f":"IF((G81)=0,\"\",(M81/G81))","v":0.48776354483377371},null,{"$f":"'Rates Summary'!$F$42","v":3.101},{"$f":"$E$19","v":1000},{"$f":"Q81*P81","v":3101},null,116.09999999999991,{"$f":"IF((K81)=0,\"\",(T81/K81))","v":3.8895775402861037E-2},null,{"$f":"'Rates Summary'!$G$42","v":3.2130000000000001},{"$f":"$E$19","v":1000},{"$f":"X81*W81","v":3213},null,112,{"$f":"IF((R81)=0,\"\",(AA81/R81))","v":3.6117381489841983E-2},null,{"$f":"'Rates Summary'!$H$42","v":3.3260999999999998},{"$f":"$E$19","v":1000},{"$f":"AE81*AD81","v":3326.1},null,113.09999999999991,{"$f":"IF((Y81)=0,\"\",(AH81/Y81))","v":3.520074696545282E-2},null,{"$f":"'Rates Summary'!$I$42","v":3.4096000000000002},{"$f":"$E$19","v":1000},{"$f":"AL81*AK81","v":3409.6000000000004},null,83.500000000000455,{"$f":"IF((AF81)=0,\"\",(AO81/AF81))","v":2.5104476714470539E-2}]
["\"Regular\" Distribution Only",null,null,null,null,null,{"$f":"SUM(G80:G81)","v":2286.39},null,null,null,{"$f":"SUM(K80:K81)","v":3090.52},null,804.13000000000011,0.35170290282935113,null,null,null,{"$f":"SUM(R80:R81)","v":3208.49},null,117.9699999999998,3.8171569832908314E-2,null,null,null,{"$f":"SUM(Y80:Y81)","v":3322.29},null,113.80000000000018,3.5468397906803568E-2,null,null,null,{"$f":"SUM(AF80:AF81)","v":3437.0899999999997},null,114.79999999999973,3.4554478988890108E-2,null,null,null,{"$f":"SUM(AM80:AM81)","v":3521.7300000000005},null,84.640000000000782,2.4625482603016152E-2]
[]
[]
[null,"Residential (kWh) - 100, 250, 500, 800, 1000, 1500, 2000"]
[null,"GS<50kW (kWh) - 1000, 2000, 5000, 10000, 15000"]
[null,"GS>50kW (kW) - 60, 100, 500, 1000"]
[null,"Large User - range appropriate for utility"]
[null,"Lighting Classes and USL - 150 kWh and 1 kW, range appropriate for utility."]
[]
[null,null,"Note that cells with the highlighted color shown to the left indicate quantities that are loss adjusted."]

{"sheet":"Bill Impact Large Use 8000kW","index":19,"n_rows":91,"n_cols":42,"rows_kept":91,"cut":false,"hidden":false,"merged":[[76,40,76,41],[76,22,76,24],[76,26,76,27],[76,29,76,31],[76,33,76,34],[76,36,76,38],[76,4,76,6],[76,8,76,10],[76,12,76,13],[76,15,76,17],[76,19,76,20],[19,40,19,41],[2,0,2,9],[9,0,9,13],[10,0,10,13],[13,2,13,13],[13,15,13,26],[19,4,19,6],[19,8,19,10],[19,12,19,13],[19,15,19,17],[19,19,19,20],[19,22,19,24],[19,26,19,27],[19,29,19,31],[19,33,19,34],[19,36,19,38],[20,34,21,34],[20,40,21,40],[20,41,21,41],[64,0,64,2],[20,2,21,2],[20,12,21,12],[20,13,21,13],[20,19,21,19],[20,20,21,20],[20,26,21,26],[65,0,65,2],[70,0,70,2],[71,0,71,2],[20,27,21,27],[20,33,21,33],[77,2,78,2],[77,12,78,12],[77,13,78,13],[77,19,78,19],[77,20,78,20],[77,41,78,41],[77,26,78,26],[77,27,78,27],[77,33,78,33],[77,34,78,34],[77,40,78,40]]}
[null,null,null,null,null,null,null,null,null,null,null,null,"File Number:",{"$f":"EBNUMBER","v":"EB-2015-0083"},null,null,null,null,1]
[null,null,null,null,null,null,null,null,null,null,null,null,"Exhibit:",{"$f":"'Bill Impact Resi 204kWh'!$N$2","v":8}]
[null,null,null,null,null,null,null,null,null,null,null,null,"Tab:",{"$f":"'Bill Impact Resi 204kWh'!$N$3","v":4}]
[null,null,null,null,null,null,null,null,null,null,null,null,"Schedule:",{"$f":"'Bill Impact Resi 204kWh'!$N$4","v":3}]
[null,null,null,null,null,null,null,null,null,null,null,null,"Page:"]
[]
[null,null,null,null,null,null,null,null,null,null,null,null,"Date:",{"$f":"'Bill Impact Resi 204kWh'!$N$7","v":"Settlement"}]
[]
[]
["Appendix 2-W"]
["Bill Impacts"]
[]
[]
["Customer Class:",null,"Large Use",null,null,null,null,null,null,null,null,null,null,null,null,{"$f":"C14","v":"Large Use"},null,null,null,null,null,null,null,null,null,null,null,null,null,null,null,null,null,null,null,null,{"$f":"P14","v":"Large Use"}]
[]
["TOU / non-TOU:",null,"TOU"]
[]
[null,null,"Consumption",null,5000000," kWh"]
[null,null,"Load",null,8000,"kW"]
[null,null,null,null,"2015 Current Board-Approved",null,null,null,"2016 Test Year 1\nProposed",null,null,null,"Impact\n2016 TEST vs. \n2015 Bridge",null,null,"2017 Test Year 2\nProposed",null,null,null,"Impact\n2017 TEST 2 vs. \n2016 Test 1",null,null,"2018 Test Year 3\nProposed",null,null,null,"Impact\n2018 TEST 3 vs. \n2017 Test 2",null,null,"2019 Test Year 4\nProposed",null,null,null,"Impact\n2019 TEST 4 vs. \n2018 Test 3",null,null,"2020 Test Year 5 \nProposed",null,null,null,"Impact\n2019 TEST 5 vs. \n2019 Test 4"]
[null,null,"Charge Unit",null,"Rate","Volume","Charge",null,"Rate","Volume","Charge",null,"$ Change","% Change",null,"Rate","Volume","Charge",null,"$ Change","% Change",null,"Rate","Volume","Charge",null,"$ Change","% Change",null,"Rate","Volume","Charge",null,"$ Change","% Change",null,"Rate","Volume","Charge",null,"$ Change","% Change"]
[null,null,null,null,"($)",null,"($)",null,"($)",null,"($)",null,null,null,null,"($)",null,"($)",null,null,null,null,"($)",null,"($)",null,null,null,null,"($)",null,"($)",null,null,null,null,"($)",null,"($)"]
["Monthly Service Charge",null,"Monthly",null,{"$f":"'Rates Summary'!$D$31","v":5164},1,{"$f":"F23*E23","v":5164},null,{"$f":"'Rates Summary'!$E$31","v":5164},1,{"$f":"J23*I23","v":5164},null,{"$f":"K23-G23","v":0},{"$f":"IF((G23)=0,\"\",(M23/G23))","v":0},null,{"$f":"'Rates Summary'!$F$31","v":5164},1,{"$f":"Q23*P23","v":5164},null,{"$f":"R23-K23","v":0},{"$f":"IF((K23)=0,\"\",(T23/K23))","v":0},null,{"$f":"'Rates Summary'!$G$31","v":5164},1,{"$f":"X23*W23","v":5164},null,{"$f":"Y23-R23","v":0},{"$f":"IF((R23)=0,\"\",(AA23/R23))","v":0},null,{"$f":"'Rates Summary'!$H$31","v":5164},1,{"$f":"AE23*AD23","v":5164},null,{"$f":"AF23-Y23","v":0},{"$f":"IF((Y23)=0,\"\",(AH23/Y23))","v":0},null,{"$f":"'Rates Summary'!$I$31","v":5164},1,{"$f":"AL23*AK23","v":5164},null,{"$f":"AM23-AF23","v":0},{"$f":"IF((AF23)=0,\"\",(AO23/AF23))","v":0}]
["Smart Meter (SMIRR) Rate Rider",null,null,null,0,1,{"$f":"F24*E24","v":0},null,0,1,{"$f":"J24*I24","v":0},null,{"$f":"K24-G24","v":0},{"$f":"IF((G24)=0,\"\",(M24/G24))","v":""},null,0,1,{"$f":"Q24*P24","v":0},null,0,{"$f":"IF((K24)=0,\"\",(T24/K24))","v":""},null,0,1,{"$f":"X24*W24","v":0},null,0,{"$f":"IF((R24)=0,\"\",(AA24/R24))","v":""},null,0,1,{"$f":"AE24*AD24","v":0},null,0,{"$f":"IF((Y24)=0,\"\",(AH24/Y24))","v":""},null,0,1,{"$f":"AL24*AK24","v":0},null,0,{"$f":"IF((AF24)=0,\"\",(AO24/AF24))","v":""}]
["Rate Rider Smart Meters Capital (2016)",null,null,null,0,1,0,null,0,1,{"$f":"J25*I25","v":0},null,{"$f":"K25-G25","v":0},{"$f":"IF((G25)=0,\"\",(M25/G25))","v":""},null,0,1,{"$f":"Q25*P25","v":0},null,0,"",null,0,1,{"$f":"X25*W25","v":0},null,0,"",null,0,1,{"$f":"AE25*AD25","v":0},null,0,"",null,0,1,{"$f":"AL25*AK25","v":0},null,0,""]
["Rate Rider Recovery of Stranded Meters",null,null,null,0,1,0,null,0,1,0,null,0,"",null,0,1,0,null,0,"",null,0,1,0,null,0,"",null,0,1,0,null,0,"",null,0,1,0,null,0,""]
[null,null,null,null,null,1,0,null,null,1,0,null,0,"",null,null,1,0,null,0,"",null,null,1,0,null,0,"",null,null,1,0,null,0,"",null,null,1,0,null,0,""]
[null,null,null,null,null,1,0,null,null,1,0,null,0,"",null,null,1,0,null,0,"",null,null,1,0,null,0,"",null,null,1,0,null,0,"",null,null,1,0,null,0,""]
["Distribution Volumetric Rate",null,"per kW",null,{"$f":"'Rates Summary'!$D$43","v":1.0535000000000001},{"$f":"$E$19","v":8000},8428,null,{"$f":"'Rates Summary'!$E$43","v":1.1548},{"$f":"$E$19","v":8000},9238.4,null,810.39999999999964,9.6155671570953921E-2,null,{"$f":"'Rates Summary'!$F$43","v":1.216},{"$f":"$E$19","v":8000},9728,null,489.60000000000036,5.2996189816418467E-2,null,{"$f":"'Rates Summary'!$G$43","v":1.2749999999999999},{"$f":"$E$19","v":8000},10200,null,472,4.8519736842105261E-2,null,{"$f":"'Rates Summary'!$H$43","v":1.3339000000000001},{"$f":"$E$19","v":8000},10671.2,null,471.20000000000073,4.619607843137262E-2,null,{"$f":"'Rates Summary'!$I$43","v":1.377},{"$f":"$E$19","v":8000},11016,null,344.79999999999927,3.2311267711222662E-2]
["Rate Rider Tax Change (2015)",null,"per kW",null,-4.4999999999999997E-3,{"$f":"$E$19","v":8000},-36,null,0,{"$f":"$E$19","v":8000},0,null,36,-1,null,0,{"$f":"$E$19","v":8000},0,null,0,"",null,0,{"$f":"$E$19","v":8000},0,null,0,"",null,0,{"$f":"$E$19","v":8000},0,null,0,"",null,0,{"$f":"$E$19","v":8000},0,null,0,""]
["LRAM VA (2016)",null,"per kW",null,0,8000,0,null,{"$f":"'Rates Summary'!F7","v":2.6800000000000001E-2},8000,214.4,null,214.4,"",null,0,8000,0,null,-214.4,-1,null,0,8000,0,null,0,"",null,0,8000,0,null,0,"",null,0,8000,0,null,0,""]
["Rate Rider Incremental Capital 2012 True-Up (2016)",null,"per kW",null,0,8000,0,null,{"$f":"'Rates Summary'!F9","v":2.0299999999999999E-2},8000,162.39999999999998,null,162.39999999999998,"",null,0,8000,0,null,-162.39999999999998,-1,null,0,8000,0,null,0,"",null,0,8000,0,null,0,"",null,0,8000,0,null,0,""]
[null,null,null,null,null,8000,{"$f":"F33*E33","v":0},null,null,8000,{"$f":"J33*I33","v":0},null,{"$f":"K33-G33","v":0},{"$f":"IF((G33)=0,\"\",(M33/G33))","v":""},null,null,8000,{"$f":"Q33*P33","v":0},null,{"$f":"R33-K33","v":0},{"$f":"IF((K33)=0,\"\",(T33/K33))","v":""},null,null,8000,{"$f":"X33*W33","v":0},null,{"$f":"Y33-R33","v":0},{"$f":"IF((R33)=0,\"\",(AA33/R33))","v":""},null,null,8000,{"$f":"AE33*AD33","v":0},null,{"$f":"AF33-Y33","v":0},{"$f":"IF((Y33)=0,\"\",(AH33/Y33))","v":""},null,null,8000,{"$f":"AL33*AK33","v":0},null,{"$f":"AM33-AF33","v":0},{"$f":"IF((AF33)=0,\"\",(AO33/AF33))","v":""}]
[null,null,null,null,null,8000,0,null,null,8000,0,null,0,"",null,null,8000,0,null,0,"",null,null,8000,0,null,0,"",null,null,8000,0,null,0,"",null,null,8000,0,null,0,""]
[null,null,null,null,null,8000,0,null,null,8000,0,null,0,"",null,null,8000,0,null,0,"",null,null,8000,0,null,0,"",null,null,8000,0,null,0,"",null,null,8000,0,null,0,""]
[null,null,null,null,null,8000,0,null,null,8000,0,null,0,"",null,null,8000,0,null,0,"",null,null,8000,0,null,0,"",null,null,8000,0,null,0,"",null,null,8000,0,null,0,""]
[null,null,null,null,null,8000,0,null,null,8000,0,null,0,"",null,null,8000,0,null,0,"",null,null,8000,0,null,0,"",null,null,8000,0,null,0,"",null,null,8000,0,null,0,""]
[null,null,null,null,null,8000,0,null,null,8000,0,null,0,"",null,null,8000,0,null,0,"",null,null,8000,0,null,0,"",null,null,8000,0,null,0,"",null,null,8000,0,null,0,""]
["Sub-Total A (excluding pass through)",null,null,null,null,null,{"$f":"SUM(G23:G38)","v":13556},null,null,null,{"$f":"SUM(K23:K38)","v":14779.199999999999},null,1223.1999999999989,9.0233107111242175E-2,null,null,null,{"$f":"SUM(R23:R38)","v":14892},null,112.80000000000109,7.6323481649887073E-3,null,null,null,{"$f":"SUM(Y23:Y38)","v":15364},null,472,3.1694869728713403E-2,null,null,null,{"$f":"SUM(AF23:AF38)","v":15835.2},null,471.20000000000073,3.0669096589429883E-2,null,null,null,{"$f":"SUM(AM23:AM38)","v":16180},null,344.79999999999927,2.1774275032838186E-2]
["Deferral/Variance Account Disposition Rate Rider (2016)",null,"per kW",null,0,8000,{"$f":"F40*E40","v":0},null,{"$f":"'Rates Summary'!F5","v":-0.56030000000000002},8000,{"$f":"J40*I40","v":-4482.4000000000005},null,{"$f":"K40-G40","v":-4482.4000000000005},"",null,0,8000,{"$f":"Q40*P40","v":0},null,4482.4000000000005,-1,null,0,8000,{"$f":"X40*W40","v":0},null,0,"",null,0,8000,{"$f":"AE40*AD40","v":0},null,0,"",null,0,8000,{"$f":"AL40*AK40","v":0},null,0,""]
[null,null,null,null,null,8000,{"$f":"F41*E41","v":0},null,null,8000,{"$f":"J41*I41","v":0},null,{"$f":"K41-G41","v":0},"",null,null,8000,{"$f":"Q41*P41","v":0},null,{"$f":"R41-K41","v":0},{"$f":"IF((K41)=0,\"\",(T41/K41))","v":""},null,null,8000,{"$f":"X41*W41","v":0},null,{"$f":"Y41-R41","v":0},{"$f":"IF((R41)=0,\"\",(AA41/R41))","v":""},null,null,8000,{"$f":"AE41*AD41","v":0},null,{"$f":"AF41-Y41","v":0},{"$f":"IF((Y41)=0,\"\",(AH41/Y41))","v":""},null,null,8000,{"$f":"AL41*AK41","v":0},null,{"$f":"AM41-AF41","v":0},{"$f":"IF((AF41)=0,\"\",(AO41/AF41))","v":""}]
["Rate Rider CGAAP Account 1576 (2016)",null,"per kW",null,0,8000,0,null,{"$f":"'Rates Summary'!$F$8","v":-0.55130000000000001},8000,-4410.4000000000005,null,-4410.4000000000005,"",null,null,8000,0,null,4410.4000000000005,-1,null,null,8000,0,null,0,"",null,null,8000,0,null,0,"",null,null,8000,0,null,0,""]
["Disposition of Global Adjustment (2015)  \nApplicable to Non-RPP Customers",null,"per kW",null,null,8000,{"$f":"F43*E43","v":0},null,null,8000,{"$f":"J43*I43","v":0},null,{"$f":"K43-G43","v":0},"",null,null,8000,{"$f":"Q43*P43","v":0},null,0,"",null,null,8000,{"$f":"X43*W43","v":0},null,0,"",null,null,8000,{"$f":"AE43*AD43","v":0},null,0,"",null,null,8000,{"$f":"AL43*AK43","v":0},null,0,""]
["Disposition of Global Adjustment (2016) \nApplicable to Non-RPP Customers",null,"per kW",null,null,8000,0,null,null,8000,0,null,0,{"$f":"IF((G44)=0,\"\",(M44/G44))","v":""},null,null,8000,0,null,0,"",null,null,8000,0,null,0,"",null,null,8000,0,null,0,"",null,null,8000,0,null,0,""]
["Low Voltage Service Charge",null,"per kW",null,0.30359999999999998,8000,{"$f":"F45*E45","v":2428.7999999999997},null,{"$f":"'Rates Summary'!F15","v":0.56189999999999996},8000,{"$f":"J45*I45","v":4495.2},null,{"$f":"K45-G45","v":2066.4},{"$f":"IF((G45)=0,\"\",(M45/G45))","v":0.85079051383399218},null,{"$f":"I45","v":0.56189999999999996},8000,{"$f":"Q45*P45","v":4495.2},null,{"$f":"R45-K45","v":0},0,null,{"$f":"P45","v":0.56189999999999996},8000,{"$f":"X45*W45","v":4495.2},null,{"$f":"Y45-R45","v":0},0,null,{"$f":"W45","v":0.56189999999999996},8000,{"$f":"AE45*AD45","v":4495.2},null,{"$f":"AF45-Y45","v":0},0,null,{"$f":"AD45","v":0.56189999999999996},8000,{"$f":"AL45*AK45","v":4495.2},null,{"$f":"AM45-AF45","v":0},0]
["Line Losses on Cost of Power",null,"per kWh",null,{"$f":"IF(ISBLANK(C16)=TRUE, 0, IF(C16=\"TOU\", 0.64*$E$56+0.18*$E$57+0.18*$E$58, IF(AND(C16=\"non-TOU\", F60>0), E60,E59)))","v":0.10766000000000001},{"$f":"$E$18*(1+$E$75)-$E$18","v":90000},9689.4,null,{"$f":"E46","v":0.10766000000000001},{"$f":"$E$18*(1+$I$75)-$E$18","v":94000},10120.040000000001,null,430.64000000000124,4.4444444444444571E-2,null,{"$f":"I46","v":0.10766000000000001},{"$f":"$E$18*(1+$I$75)-$E$18","v":94000},{"$f":"Q46*P46","v":10120.040000000001},null,{"$f":"R46-K46","v":0},0,null,{"$f":"P46","v":0.10766000000000001},{"$f":"$E$18*(1+$I$75)-$E$18","v":94000},{"$f":"X46*W46","v":10120.040000000001},null,{"$f":"Y46-R46","v":0},0,null,{"$f":"W46","v":0.10766000000000001},{"$f":"$E$18*(1+$I$75)-$E$18","v":94000},{"$f":"AE46*AD46","v":10120.040000000001},null,{"$f":"AF46-Y46","v":0},0,null,{"$f":"AD46","v":0.10766000000000001},{"$f":"$E$18*(1+$I$75)-$E$18","v":94000},{"$f":"AL46*AK46","v":10120.040000000001},null,{"$f":"AM46-AF46","v":0},0]
["Smart Meter Entity Charge",null,null,null,0,1,{"$f":"F47*E47","v":0},null,{"$f":"E47","v":0},1,{"$f":"J47*I47","v":0},null,{"$f":"I47","v":0},null,null,{"$f":"M47","v":0},1,{"$f":"Q47*P47","v":0},null,{"$f":"R47-K47","v":0},"",null,{"$f":"P47","v":0},1,{"$f":"X47*W47","v":0},null,{"$f":"Y47-R47","v":0},"",null,{"$f":"W47","v":0},1,{"$f":"AE47*AD47","v":0},null,{"$f":"AF47-Y47","v":0},"",null,{"$f":"AD47","v":0},1,{"$f":"AL47*AK47","v":0},null,{"$f":"AM47-AF47","v":0},""]
["Sub-Total B - Distribution (includes Sub-Total A)",null,null,null,null,null,{"$f":"SUM(G40:G47)+G39","v":25674.199999999997},null,null,null,{"$f":"SUM(K40:K47)+K39","v":20501.64},null,{"$f":"K48-G48","v":-5172.5599999999977},{"$f":"IF((G48)=0,\"\",(M48/G48))","v":-0.20146917917598203},null,null,null,{"$f":"SUM(R40:R47)+R39","v":29507.24},null,{"$f":"R48-K48","v":9005.6000000000022},0.43926241998201132,null,null,null,{"$f":"SUM(Y40:Y47)+Y39","v":29979.24},null,{"$f":"Y48-R48","v":472},1.5996074183827425E-2,null,null,null,{"$f":"SUM(AF40:AF47)+AF39","v":30450.440000000002},null,{"$f":"AF48-Y48","v":471.20000000000073},1.5717543206565633E-2,null,null,null,{"$f":"SUM(AM40:AM47)+AM39","v":30795.24},null,{"$f":"AM48-AF48","v":344.79999999999927},1.1323317495576394E-2]
["RTSR - Network",null,"per kW",null,3.1703999999999999,{"$f":"$E$19","v":8000},{"$f":"F49*E49","v":25363.200000000001},null,{"$f":"'Rates Summary'!F17","v":3.3492000000000002},{"$f":"$E$19","v":8000},{"$f":"J49*I49","v":26793.600000000002},null,1430.4000000000015,5.6396669190007624E-2,null,{"$f":"I49","v":3.3492000000000002},{"$f":"$E$19","v":8000},{"$f":"Q49*P49","v":26793.600000000002},null,0,0,null,{"$f":"P49","v":3.3492000000000002},{"$f":"$E$19","v":8000},{"$f":"X49*W49","v":26793.600000000002},null,0,0,null,{"$f":"W49","v":3.3492000000000002},{"$f":"$E$19","v":8000},{"$f":"AE49*AD49","v":26793.600000000002},null,0,0,null,{"$f":"AD49","v":3.3492000000000002},{"$f":"$E$19","v":8000},{"$f":"AL49*AK49","v":26793.600000000002},null,0,0]
["RTSR - Line and Transformation Connection",null,"per kW",null,2.4253,8000,{"$f":"F50*E50","v":19402.400000000001},null,{"$f":"'Rates Summary'!F18","v":2.6779999999999999},8000,{"$f":"J50*I50","v":21424},null,2021.5999999999985,0.10419329567476181,null,{"$f":"I50","v":2.6779999999999999},8000,{"$f":"Q50*P50","v":21424},null,0,0,null,{"$f":"P50","v":2.6779999999999999},8000,{"$f":"X50*W50","v":21424},null,0,0,null,{"$f":"W50","v":2.6779999999999999},8000,{"$f":"AE50*AD50","v":21424},null,0,0,null,{"$f":"AD50","v":2.6779999999999999},8000,{"$f":"AL50*AK50","v":21424},null,0,0]
["Sub-Total C - Delivery (including Sub-Total B)",null,null,null,null,null,{"$f":"SUM(G48:G50)","v":70439.799999999988},null,null,null,{"$f":"SUM(K48:K50)","v":68719.240000000005},null,-1720.5599999999831,-2.442596373073154E-2,null,null,null,{"$f":"SUM(R48:R50)","v":77724.84},null,9005.5999999999913,0.13104917924004966,null,null,null,{"$f":"SUM(Y48:Y50)","v":78196.84},null,472,6.0727046848858103E-3,null,null,null,{"$f":"SUM(AF48:AF50)","v":78668.040000000008},null,471.20000000001164,6.0258189461365914E-3,null,null,null,{"$f":"SUM(AM48:AM50)","v":79012.84},null,344.79999999998836,4.3829743311259352E-3]
["Wholesale Market Service Charge (WMSC)",null,"per kWh",null,4.4000000000000003E-3,{"$f":"$E$18*(1+$E$75)","v":5090000},{"$f":"F52*E52","v":22396},null,{"$f":"E52","v":4.4000000000000003E-3},{"$f":"$E$18*(1+I75)","v":5094000},{"$f":"J52*I52","v":22413.600000000002},null,17.600000000002183,7.858546168959717E-4,null,{"$f":"I52","v":4.4000000000000003E-3},{"$f":"$E$18*(1+P75)","v":5094000},{"$f":"Q52*P52","v":22413.600000000002},null,0,0,null,{"$f":"P52","v":4.4000000000000003E-3},{"$f":"$E$18*(1+W75)","v":5094000},{"$f":"X52*W52","v":22413.600000000002},null,0,0,null,{"$f":"W52","v":4.4000000000000003E-3},{"$f":"$E$18*(1+AD75)","v":5094000},{"$f":"AE52*AD52","v":22413.600000000002},null,0,0,null,{"$f":"AD52","v":4.4000000000000003E-3},{"$f":"$E$18*(1+AK75)","v":5094000},{"$f":"AL52*AK52","v":22413.600000000002},null,0,0]
["Rural and Remote Rate Protection (RRRP)",null,"per kWh",null,1.2999999999999999E-3,{"$f":"$E$18*(1+$E$75)","v":5090000},6617,null,{"$f":"E53","v":1.2999999999999999E-3},{"$f":"$E$18*(1+I75)","v":5094000},6622.2,null,5.1999999999998181,7.858546168958468E-4,null,{"$f":"I53","v":1.2999999999999999E-3},{"$f":"$E$18*(1+P75)","v":5094000},6622.2,null,0,0,null,{"$f":"P53","v":1.2999999999999999E-3},{"$f":"$E$18*(1+W75)","v":5094000},6622.2,null,0,0,null,{"$f":"W53","v":1.2999999999999999E-3},{"$f":"$E$18*(1+AD75)","v":5094000},6622.2,null,0,0,null,{"$f":"AD53","v":1.2999999999999999E-3},{"$f":"$E$18*(1+AK75)","v":5094000},6622.2,null,0,0]
["Standard Supply Service Charge",null,"Monthly",null,0.25,1,0.25,null,{"$f":"E54","v":0.25},1,0.25,null,0,0,null,{"$f":"I54","v":0.25},1,0.25,null,0,0,null,{"$f":"P54","v":0.25},1,0.25,null,0,0,null,{"$f":"W54","v":0.25},1,0.25,null,0,0,null,{"$f":"AD54","v":0.25},1,0.25,null,0,0]
["Debt Retirement Charge (DRC)",null,"per kWh",null,7.0000000000000001E-3,{"$f":"E18","v":5000000},35000,null,{"$f":"E55","v":7.0000000000000001E-3},{"$f":"E18","v":5000000},35000,null,0,0,null,{"$f":"I55","v":7.0000000000000001E-3},{"$f":"J55","v":5000000},35000,null,0,0,null,{"$f":"P55","v":7.0000000000000001E-3},{"$f":"Q55","v":5000000},35000,null,0,0,null,{"$f":"W55","v":7.0000000000000001E-3},{"$f":"X55","v":5000000},35000,null,0,0,null,{"$f":"AD55","v":7.0000000000000001E-3},{"$f":"AE55","v":5000000},35000,null,0,0]
["TOU - Off Peak",null,"per kWh",null,8.3000000000000004E-2,{"$f":"0.64*$E$18","v":3200000},265600,null,{"$f":"E56","v":8.3000000000000004E-2},{"$f":"F56","v":3200000},265600,null,0,0,null,{"$f":"I56","v":8.3000000000000004E-2},{"$f":"J56","v":3200000},265600,null,0,0,null,{"$f":"P56","v":8.3000000000000004E-2},{"$f":"Q56","v":3200000},265600,null,0,0,null,{"$f":"W56","v":8.3000000000000004E-2},{"$f":"X56","v":3200000},265600,null,0,0,null,{"$f":"AD56","v":8.3000000000000004E-2},{"$f":"AE56","v":3200000},265600,null,0,0]
["TOU - Mid Peak",null,"per kWh",null,0.128,{"$f":"0.18*$E$18","v":900000},115200,null,{"$f":"E57","v":0.128},{"$f":"F57","v":900000},115200,null,0,0,null,{"$f":"I57","v":0.128},900000,115200,null,0,0,null,{"$f":"P57","v":0.128},900000,115200,null,0,0,null,{"$f":"W57","v":0.128},900000,115200,null,0,0,null,{"$f":"AD57","v":0.128},900000,115200,null,0,0]
["TOU - On Peak",null,"per kWh",null,0.17499999999999999,{"$f":"0.18*$E$18","v":900000},157500,null,0.17499999999999999,{"$f":"F58","v":900000},157500,null,0,0,null,0.17499999999999999,900000,157500,null,0,0,null,0.17499999999999999,900000,157500,null,0,0,null,0.17499999999999999,900000,157500,null,0,0,null,0.17499999999999999,900000,157500,null,0,0]
["Energy - RPP - Tier 1",null,"per kWh",null,9.9000000000000005E-2,{"$f":"IF(AND($S$1=1, E18>=600), 600, IF(AND($S$1=1, AND(E18<600, E18>=0)), E18, IF(AND($S$1=2, E18>=1000), 1000, IF(AND($S$1=2, AND(E18<1000, E18>=0)), E18))))","v":600},{"$f":"F59*E59","v":59.400000000000006},null,9.9000000000000005E-2,{"$f":"F59","v":600},{"$f":"J59*I59","v":59.400000000000006},null,0,0,null,9.9000000000000005E-2,600,{"$f":"Q59*P59","v":59.400000000000006},null,0,0,null,9.9000000000000005E-2,600,{"$f":"X59*W59","v":59.400000000000006},null,0,0,null,9.9000000000000005E-2,600,{"$f":"AE59*AD59","v":59.400000000000006},null,0,0,null,9.9000000000000005E-2,600,{"$f":"AL59*AK59","v":59.400000000000006},null,0,0]
["Energy - RPP - Tier 2",null,"per kWh",null,0.11600000000000001,{"$f":"IF(AND($S$1=1, E18>=600), E18-600, IF(AND($S$1=1, AND(E18<600, E18>=0)), 0, IF(AND($S$1=2, E18>=1000), E18-1000, IF(AND($S$1=2, AND(E18<1000, E18>=0)), 0))))","v":4999400},{"$f":"F60*E60","v":579930.4},null,0.11600000000000001,{"$f":"F60","v":4999400},{"$f":"J60*I60","v":579930.4},null,0,0,null,0.11600000000000001,4999400,{"$f":"Q60*P60","v":579930.4},null,0,0,null,0.11600000000000001,4999400,{"$f":"X60*W60","v":579930.4},null,0,0,null,0.11600000000000001,4999400,{"$f":"AE60*AD60","v":579930.4},null,0,0,null,0.11600000000000001,4999400,{"$f":"AL60*AK60","v":579930.4},null,0,0]
[null,null,null,null,null,null,null,null,null,null,null,null,null,null,null,null,null,null,null,null,"",null,null,null,null,null,null,"",null,null,null,null,null,null,"",null,null,null,null,null,null,""]
["Total Bill on TOU (before Taxes)",null,null,null,null,null,{"$f":"SUM(G52:G58,G51)","v":672753.05},null,null,null,{"$f":"SUM(K52:K58,K51)","v":671055.29},null,{"$f":"K62-G62","v":-1697.7600000000093},{"$f":"IF((G62)=0,\"\",(M62/G62))","v":-2.523600599060843E-3},null,null,null,{"$f":"SUM(R52:R58,R51)","v":680060.89},null,{"$f":"R62-K62","v":9005.5999999999767},1.3420056639446171E-2,null,null,null,{"$f":"SUM(Y52:Y58,Y51)","v":680532.89},null,{"$f":"Y62-R62","v":472},6.9405549847161474E-4,null,null,null,{"$f":"SUM(AF52:AF58,AF51)","v":681004.09000000008},null,{"$f":"AF62-Y62","v":471.20000000006985},6.9239857018529968E-4,null,null,null,{"$f":"SUM(AM52:AM58,AM51)","v":681348.89},null,{"$f":"AM62-AF62","v":344.79999999993015},5.0631120291792981E-4]
["HST",null,null,null,0.13,null,{"$f":"G62*E63","v":87457.896500000003},null,0.13,null,{"$f":"K62*I63","v":87237.187700000009},null,-220.70879999999306,-2.5236005990607498E-3,null,0.13,null,{"$f":"R62*P63","v":88407.915699999998},null,{"$f":"R63-K63","v":1170.7279999999882},1.342005663944607E-2,null,0.13,null,{"$f":"Y62*W63","v":88469.275699999998},null,{"$f":"Y63-R63","v":61.360000000000582},6.9405549847162136E-4,null,0.13,null,{"$f":"AF62*AD63","v":88530.531700000007},null,{"$f":"AF63-Y63","v":61.256000000008498},6.9239857018529318E-4,null,0.13,null,{"$f":"AM62*AK63","v":88575.3557},null,{"$f":"AM63-AF63","v":44.823999999993248},5.0631120291795605E-4]
["Total Bill (including HST)",null,null,null,null,null,{"$f":"G62+G63","v":760210.94650000008},null,null,null,{"$f":"K62+K63","v":758292.47770000005},null,-1918.4688000000315,-2.5236005990608703E-3,null,null,null,{"$f":"R62+R63","v":768468.80570000003},null,10176.32799999998,1.342005663944618E-2,null,null,null,{"$f":"Y62+Y63","v":769002.16570000001},null,533.35999999998603,6.9405549847159664E-4,null,null,null,{"$f":"AF62+AF63","v":769534.62170000013},null,532.456000000122,6.9239857018535574E-4,null,null,null,{"$f":"AM62+AM63","v":769924.24569999997},null,389.62399999983609,5.0631120291781933E-4]
["Ontario Clean Energy Benefit 1",null,null,null,null,null,null,null,null,null,null,null,0,"",null,null,null,null,null,0,"",null,null,null,null,null,0,"",null,null,null,null,null,0,"",null,null,null,null,null,0,""]
["Total Bill on TOU (including OCEB)",null,null,null,null,null,{"$f":"G64+G65","v":760210.94650000008},null,null,null,{"$f":"K64+K65","v":758292.47770000005},null,-1918.4688000000315,-2.5236005990608703E-3,null,null,null,{"$f":"R64+R65","v":768468.80570000003},null,10176.32799999998,1.342005663944618E-2,null,null,null,{"$f":"Y64+Y65","v":769002.16570000001},null,533.35999999998603,6.9405549847159664E-4,null,null,null,{"$f":"AF64+AF65","v":769534.62170000013},null,532.456000000122,6.9239857018535574E-4,null,null,null,{"$f":"AM64+AM65","v":769924.24569999997},null,389.62399999983609,5.0631120291781933E-4]
[null,null,null,null,null,null,null,null,null,null,null,null,null,null,null,null,null,null,null,null,"",null,null,null,null,null,null,"",null,null,null,null,null,null,"",null,null,null,null,null,null,""]
["Total Bill on RPP (before Taxes)",null,null,null,null,null,{"$f":"SUM(G60:G61,G51,G52:G55)","v":714383.45},null,null,null,{"$f":"SUM(K60:K61,K51,K52:K55)","v":712685.69},null,{"$f":"K68-G68","v":-1697.7600000000093},{"$f":"IF((G68)=0,\"\",(M68/G68))","v":-2.37653881819352E-3},null,null,null,{"$f":"SUM(R60:R61,R51,R52:R55)","v":721691.28999999992},null,{"$f":"R68-K68","v":9005.5999999999767},1.2636145395314416E-2,null,null,null,{"$f":"SUM(Y60:Y61,Y51,Y52:Y55)","v":722163.28999999992},null,{"$f":"Y68-R68","v":472},6.5401925524139284E-4,null,null,null,{"$f":"SUM(AF60:AF61,AF51,AF52:AF55)","v":722634.49},null,{"$f":"AF68-Y68","v":471.20000000006985},6.5248401092233568E-4,null,null,null,{"$f":"SUM(AM60:AM61,AM51,AM52:AM55)","v":722979.28999999992},null,{"$f":"AM68-AF68","v":344.79999999993015},4.7714301596638454E-4]
["HST",null,null,null,0.13,null,{"$f":"G68*E69","v":92869.848499999993},null,0.13,null,{"$f":"K68*I69","v":92649.1397},null,-220.70879999999306,{"$f":"IF((G69)=0,\"\",(M69/G69))","v":-2.3765388181934319E-3},null,0.13,null,{"$f":"R68*P69","v":93819.867699999988},null,{"$f":"R69-K69","v":1170.7279999999882},1.2636145395314321E-2,null,0.13,null,{"$f":"Y68*W69","v":93881.227699999989},null,{"$f":"Y69-R69","v":61.360000000000582},6.5401925524139902E-4,null,0.13,null,{"$f":"AF68*AD69","v":93942.483699999997},null,{"$f":"AF69-Y69","v":61.256000000008498},6.524840109223295E-4,null,0.13,null,{"$f":"AM68*AK69","v":93987.30769999999},null,{"$f":"AM69-AF69","v":44.823999999993248},4.7714301596640932E-4]
["Total Bill (including HST)",null,null,null,null,null,{"$f":"G68+G69","v":807253.29849999992},null,null,null,{"$f":"K68+K69","v":805334.82969999989},null,-1918.4688000000315,-2.376538818193546E-3,null,null,null,{"$f":"R68+R69","v":815511.15769999987},null,10176.32799999998,1.2636145395314425E-2,null,null,null,{"$f":"Y68+Y69","v":816044.51769999997},null,533.36000000010245,6.540192552415185E-4,null,null,null,{"$f":"AF68+AF69","v":816576.97369999997},null,532.45600000000559,6.524840109222458E-4,null,null,null,{"$f":"AM68+AM69","v":816966.59769999993},null,389.6239999999525,4.7714301596642303E-4]
["Ontario Clean Energy Benefit 1",null,null,null,null,null,null,null,null,null,null,null,0,"",null,null,null,null,null,0,"",null,null,null,null,null,0,"",null,null,null,null,null,0,"",null,null,null,null,null,0,""]
["Total Bill on RPP (including OCEB)",null,null,null,null,null,{"$f":"SUM(G70:G71)","v":807253.29849999992},null,null,null,{"$f":"SUM(K70:K71)","v":805334.82969999989},null,-1918.4688000000315,-2.376538818193546E-3,null,null,null,{"$f":"SUM(R70:R71)","v":815511.15769999987},null,10176.32799999998,1.2636145395314425E-2,null,null,null,{"$f":"SUM(Y70:Y71)","v":816044.51769999997},null,533.36000000010245,6.540192552415185E-4,null,null,null,{"$f":"SUM(AF70:AF71)","v":816576.97369999997},null,532.45600000000559,6.524840109222458E-4,null,null,null,{"$f":"SUM(AM70:AM71)","v":816966.59769999993},null,389.6239999999525,4.7714301596642303E-4]
[]
[]
["Loss Factor (%)",null,null,null,1.7999999999999999E-2,null,null,null,1.8800000000000001E-2,null,null,null,null,null,null,1.8800000000000001E-2,null,null,null,null,null,null,1.8800000000000001E-2,null,null,null,null,null,null,1.8800000000000001E-2,null,null,null,null,null,null,1.8800000000000001E-2]
[]
["Distribution Excluding Rate Riders",null,null,null,"2015 Current Board-Approved",null,null,null,"2016 Test Year 1\nProposed",null,null,null,"Impact\n2016 TEST vs. \n2015 Bridge",null,null,"2017 Test Year 2\nProposed",null,null,null,"Impact\n2017 TEST 2 vs. \n2016 Test 1",null,null,"2018 Test Year 3\nProposed",null,null,null,"Impact\n2018 TEST 3 vs. \n2017 Test 2",null,null,"2019 Test Year 4\nProposed",null,null,null,"Impact\n2019 TEST 4 vs. \n2018 Test 3",null,null,"2020 Test Year 5 \nProposed",null,null,null,"Impact\n2019 TEST 5 vs. \n2019 Test 4"]
[null,null,"Charge Unit",null,"Rate","Volume","Charge",null,"Rate","Volume","Charge",null,"$ Change","% Change",null,"Rate","Volume","Charge",null,"$ Change","% Change",null,"Rate","Volume","Charge",null,"$ Change","% Change",null,"Rate","Volume","Charge",null,"$ Change","% Change",null,"Rate","Volume","Charge",null,"$ Change","% Change"]
[null,null,null,null,"($)",null,"($)",null,"($)",null,"($)",null,null,null,null,"($)",null,"($)",null,null,null,null,"($)",null,"($)",null,null,null,null,"($)",null,"($)",null,null,null,null,"($)",null,"($)"]
["Monthly Service Charge",null,"Monthly",null,{"$f":"'Rates Summary'!$D$31","v":5164},1,{"$f":"F80*E80","v":5164},null,{"$f":"'Rates Summary'!$E$31","v":5164},1,{"$f":"J80*I80","v":5164},null,{"$f":"K80-G80","v":0},{"$f":"IF((G80)=0,\"\",(M80/G80))","v":0},null,{"$f":"'Rates Summary'!$F$31","v":5164},1,{"$f":"Q80*P80","v":5164},null,{"$f":"R80-K80","v":0},{"$f":"IF((K80)=0,\"\",(T80/K80))","v":0},null,{"$f":"'Rates Summary'!$G$31","v":5164},1,{"$f":"X80*W80","v":5164},null,{"$f":"Y80-R80","v":0},{"$f":"IF((R80)=0,\"\",(AA80/R80))","v":0},null,{"$f":"'Rates Summary'!$H$31","v":5164},1,{"$f":"AE80*AD80","v":5164},null,{"$f":"AF80-Y80","v":0},{"$f":"IF((Y80)=0,\"\",(AH80/Y80))","v":0},null,{"$f":"'Rates Summary'!$I$31","v":5164},1,{"$f":"AL80*AK80","v":5164},null,{"$f":"AM80-AF80","v":0},{"$f":"IF((AF80)=0,\"\",(AO80/AF80))","v":0}]
["Distribution Volumetric Rate",null,"per kW",null,{"$f":"'Rates Summary'!$D$43","v":1.0535000000000001},{"$f":"$E$19","v":8000},{"$f":"F81*E81","v":8428},null,{"$f":"'Rates Summary'!$E$43","v":1.1548},{"$f":"$E$19","v":8000},{"$f":"J81*I81","v":9238.4},null,{"$f":"K81-G81","v":810.39999999999964},{"$f":"IF((G81)=0,\"\",(M81/G81))","v":9.6155671570953921E-2},null,{"$f":"'Rates Summary'!$F$43","v":1.216},{"$f":"$E$19","v":8000},{"$f":"Q81*P81","v":9728},null,489.60000000000036,{"$f":"IF((K81)=0,\"\",(T81/K81))","v":5.2996189816418467E-2},null,{"$f":"'Rates Summary'!$G$43","v":1.2749999999999999},{"$f":"$E$19","v":8000},{"$f":"X81*W81","v":10200},null,472,{"$f":"IF((R81)=0,\"\",(AA81/R81))","v":4.8519736842105261E-2},null,{"$f":"'Rates Summary'!$H$43","v":1.3339000000000001},{"$f":"$E$19","v":8000},{"$f":"AE81*AD81","v":10671.2},null,471.20000000000073,{"$f":"IF((Y81)=0,\"\",(AH81/Y81))","v":4.619607843137262E-2},null,{"$f":"'Rates Summary'!$I$43","v":1.377},{"$f":"$E$19","v":8000},{"$f":"AL81*AK81","v":11016},null,344.79999999999927,{"$f":"IF((AF81)=0,\"\",(AO81/AF81))","v":3.2311267711222662E-2}]
["\"Regular\" Distribution Only",null,null,null,null,null,{"$f":"SUM(G80:G81)","v":13592},null,null,null,{"$f":"SUM(K80:K81)","v":14402.4},null,810.39999999999964,5.9623307828134173E-2,null,null,null,{"$f":"SUM(R80:R81)","v":14892},null,489.60000000000036,3.3994334277620421E-2,null,null,null,{"$f":"SUM(Y80:Y81)","v":15364},null,472,3.1694869728713403E-2,null,null,null,{"$f":"SUM(AF80:AF81)","v":15835.2},null,471.20000000000073,3.0669096589429883E-2,null,null,null,{"$f":"SUM(AM80:AM81)","v":16180},null,344.79999999999927,2.1774275032838186E-2]
[]
[]
[null,"Residential (kWh) - 100, 250, 500, 800, 1000, 1500, 2000"]
[null,"GS<50kW (kWh) - 1000, 2000, 5000, 10000, 15000"]
[null,"GS>50kW (kW) - 60, 100, 500, 1000"]
[null,"Large User - range appropriate for utility"]
[null,"Lighting Classes and USL - 150 kWh and 1 kW, range appropriate for utility."]
[]
[null,null,"Note that cells with the highlighted color shown to the left indicate quantities that are loss adjusted."]

{"sheet":"Bill Impact Large Use 5500kW","index":20,"n_rows":91,"n_cols":42,"rows_kept":91,"cut":false,"hidden":false,"merged":[[19,33,19,34],[19,36,19,38],[20,20,21,20],[20,26,21,26],[19,40,19,41],[19,22,19,24],[19,26,19,27],[19,29,19,31],[20,27,21,27],[20,33,21,33],[20,34,21,34],[20,40,21,40],[20,41,21,41],[2,0,2,9],[9,0,9,13],[10,0,10,13],[13,2,13,13],[13,15,13,26],[19,4,19,6],[19,8,19,10],[19,12,19,13],[19,15,19,17],[19,19,19,20],[64,0,64,2],[20,2,21,2],[20,12,21,12],[20,13,21,13],[20,19,21,19],[76,29,76,31],[76,33,76,34],[77,34,78,34],[65,0,65,2],[70,0,70,2],[71,0,71,2],[76,4,76,6],[76,8,76,10],[76,12,76,13],[77,40,78,40],[77,41,78,41],[76,36,76,38],[76,40,76,41],[77,2,78,2],[77,12,78,12],[77,13,78,13],[77,19,78,19],[77,20,78,20],[77,26,78,26],[77,27,78,27],[77,33,78,33],[76,15,76,17],[76,19,76,20],[76,22,76,24],[76,26,76,27]]}
[null,null,null,null,null,null,null,null,null,null,null,null,"File Number:",{"$f":"EBNUMBER","v":"EB-2015-0083"},null,null,null,null,1]
[null,null,null,null,null,null,null,null,null,null,null,null,"Exhibit:",{"$f":"'Bill Impact Resi 204kWh'!$N$2","v":8}]
[null,null,null,null,null,null,null,null,null,null,null,null,"Tab:",{"$f":"'Bill Impact Resi 204kWh'!$N$3","v":4}]
[null,null,null,null,null,null,null,null,null,null,null,null,"Schedule:",{"$f":"'Bill Impact Resi 204kWh'!$N$4","v":3}]
[null,null,null,null,null,null,null,null,null,null,null,null,"Page:"]
[]
[null,null,null,null,null,null,null,null,null,null,null,null,"Date:",{"$f":"'Bill Impact Resi 204kWh'!$N$7","v":"Settlement"}]
[]
[]
["Appendix 2-W"]
["Bill Impacts"]
[]
[]
["Customer Class:",null,"Large Use",null,null,null,null,null,null,null,null,null,null,null,null,{"$f":"C14","v":"Large Use"},null,null,null,null,null,null,null,null,null,null,null,null,null,null,null,null,null,null,null,null,{"$f":"P14","v":"Large Use"}]
[]
["TOU / non-TOU:",null,"TOU"]
[]
[null,null,"Consumption",null,3450000," kWh"]
[null,null,"Load",null,5500,"kW"]
[null,null,null,null,"2015 Current Board-Approved",null,null,null,"2016 Test Year 1\nProposed",null,null,null,"Impact\n2016 TEST vs. \n2015 Bridge",null,null,"2017 Test Year 2\nProposed",null,null,null,"Impact\n2017 TEST 2 vs. \n2016 Test 1",null,null,"2018 Test Year 3\nProposed",null,null,null,"Impact\n2018 TEST 3 vs. \n2017 Test 2",null,null,"2019 Test Year 4\nProposed",null,null,null,"Impact\n2019 TEST 4 vs. \n2018 Test 3",null,null,"2020 Test Year 5 \nProposed",null,null,null,"Impact\n2019 TEST 5 vs. \n2019 Test 4"]
[null,null,"Charge Unit",null,"Rate","Volume","Charge",null,"Rate","Volume","Charge",null,"$ Change","% Change",null,"Rate","Volume","Charge",null,"$ Change","% Change",null,"Rate","Volume","Charge",null,"$ Change","% Change",null,"Rate","Volume","Charge",null,"$ Change","% Change",null,"Rate","Volume","Charge",null,"$ Change","% Change"]
[null,null,null,null,"($)",null,"($)",null,"($)",null,"($)",null,null,null,null,"($)",null,"($)",null,null,null,null,"($)",null,"($)",null,null,null,null,"($)",null,"($)",null,null,null,null,"($)",null,"($)"]
["Monthly Service Charge",null,"Monthly",null,{"$f":"'Rates Summary'!$D$31","v":5164},1,{"$f":"F23*E23","v":5164},null,{"$f":"'Rates Summary'!$E$31","v":5164},1,{"$f":"J23*I23","v":5164},null,{"$f":"K23-G23","v":0},{"$f":"IF((G23)=0,\"\",(M23/G23))","v":0},null,{"$f":"'Rates Summary'!$F$31","v":5164},1,{"$f":"Q23*P23","v":5164},null,{"$f":"R23-K23","v":0},{"$f":"IF((K23)=0,\"\",(T23/K23))","v":0},null,{"$f":"'Rates Summary'!$G$31","v":5164},1,{"$f":"X23*W23","v":5164},null,{"$f":"Y23-R23","v":0},{"$f":"IF((R23)=0,\"\",(AA23/R23))","v":0},null,{"$f":"'Rates Summary'!$H$31","v":5164},1,{"$f":"AE23*AD23","v":5164},null,{"$f":"AF23-Y23","v":0},{"$f":"IF((Y23)=0,\"\",(AH23/Y23))","v":0},null,{"$f":"'Rates Summary'!$I$31","v":5164},1,{"$f":"AL23*AK23","v":5164},null,{"$f":"AM23-AF23","v":0},{"$f":"IF((AF23)=0,\"\",(AO23/AF23))","v":0}]
["Smart Meter (SMIRR) Rate Rider",null,null,null,0,1,{"$f":"F24*E24","v":0},null,0,1,{"$f":"J24*I24","v":0},null,{"$f":"K24-G24","v":0},{"$f":"IF((G24)=0,\"\",(M24/G24))","v":""},null,0,1,{"$f":"Q24*P24","v":0},null,0,{"$f":"IF((K24)=0,\"\",(T24/K24))","v":""},null,0,1,{"$f":"X24*W24","v":0},null,0,{"$f":"IF((R24)=0,\"\",(AA24/R24))","v":""},null,0,1,{"$f":"AE24*AD24","v":0},null,0,{"$f":"IF((Y24)=0,\"\",(AH24/Y24))","v":""},null,0,1,{"$f":"AL24*AK24","v":0},null,0,{"$f":"IF((AF24)=0,\"\",(AO24/AF24))","v":""}]
["Rate Rider Smart Meters Capital (2016)",null,null,null,0,1,0,null,0,1,{"$f":"J25*I25","v":0},null,{"$f":"K25-G25","v":0},{"$f":"IF((G25)=0,\"\",(M25/G25))","v":""},null,0,1,{"$f":"Q25*P25","v":0},null,0,"",null,0,1,{"$f":"X25*W25","v":0},null,0,"",null,0,1,{"$f":"AE25*AD25","v":0},null,0,"",null,0,1,{"$f":"AL25*AK25","v":0},null,0,""]
["Rate Rider Recovery of Stranded Meters",null,null,null,0,1,0,null,0,1,0,null,0,"",null,0,1,0,null,0,"",null,0,1,0,null,0,"",null,0,1,0,null,0,"",null,0,1,0,null,0,""]
[null,null,null,null,null,1,0,null,null,1,0,null,0,"",null,null,1,0,null,0,"",null,null,1,0,null,0,"",null,null,1,0,null,0,"",null,null,1,0,null,0,""]
[null,null,null,null,null,1,0,null,null,1,0,null,0,"",null,null,1,0,null,0,"",null,null,1,0,null,0,"",null,null,1,0,null,0,"",null,null,1,0,null,0,""]
["Distribution Volumetric Rate",null,"per kW",null,{"$f":"'Rates Summary'!$D$43","v":1.0535000000000001},{"$f":"$E$19","v":5500},5794.2500000000009,null,{"$f":"'Rates Summary'!$E$43","v":1.1548},{"$f":"$E$19","v":5500},6351.4000000000005,null,557.14999999999964,9.615567157095388E-2,null,{"$f":"'Rates Summary'!$F$43","v":1.216},{"$f":"$E$19","v":5500},6688,null,336.59999999999945,5.2996189816418335E-2,null,{"$f":"'Rates Summary'!$G$43","v":1.2749999999999999},{"$f":"$E$19","v":5500},7012.4999999999991,null,324.49999999999909,4.8519736842105129E-2,null,{"$f":"'Rates Summary'!$H$43","v":1.3339000000000001},{"$f":"$E$19","v":5500},7336.4500000000007,null,323.95000000000164,4.6196078431372786E-2,null,{"$f":"'Rates Summary'!$I$43","v":1.377},{"$f":"$E$19","v":5500},7573.5,null,237.04999999999927,3.2311267711222627E-2]
["Rate Rider Tax Change (2015)",null,"per kW",null,-4.4999999999999997E-3,{"$f":"$E$19","v":5500},-24.749999999999996,null,0,{"$f":"$E$19","v":5500},0,null,24.749999999999996,-1,null,0,{"$f":"$E$19","v":5500},0,null,0,"",null,0,{"$f":"$E$19","v":5500},0,null,0,"",null,0,{"$f":"$E$19","v":5500},0,null,0,"",null,0,{"$f":"$E$19","v":5500},0,null,0,""]
["LRAM VA (2016)",null,"per kW",null,0,5500,0,null,{"$f":"'Rates Summary'!F7","v":2.6800000000000001E-2},5500,147.4,null,147.4,"",null,0,5500,0,null,-147.4,-1,null,0,5500,0,null,0,"",null,0,5500,0,null,0,"",null,0,5500,0,null,0,""]
["Rate Rider Incremental Capital 2012 True-Up (2016)",null,"per kW",null,0,5500,0,null,{"$f":"'Rates Summary'!F9","v":2.0299999999999999E-2},5500,111.64999999999999,null,111.64999999999999,"",null,0,5500,0,null,-111.64999999999999,-1,null,0,5500,0,null,0,"",null,0,5500,0,null,0,"",null,0,5500,0,null,0,""]
[null,null,null,null,null,5500,0,null,null,5500,0,null,0,"",null,null,5500,0,null,0,"",null,null,5500,0,null,0,"",null,null,5500,0,null,0,"",null,null,5500,0,null,0,""]
[null,null,null,null,null,5500,0,null,null,5500,0,null,0,"",null,null,5500,0,null,0,"",null,null,5500,0,null,0,"",null,null,5500,0,null,0,"",null,null,5500,0,null,0,""]
[null,null,null,null,null,5500,0,null,null,5500,0,null,0,"",null,null,5500,0,null,0,"",null,null,5500,0,null,0,"",null,null,5500,0,null,0,"",null,null,5500,0,null,0,""]
[null,null,null,null,null,5500,0,null,null,5500,0,null,0,"",null,null,5500,0,null,0,"",null,null,5500,0,null,0,"",null,null,5500,0,null,0,"",null,null,5500,0,null,0,""]
[null,null,null,null,null,5500,0,null,null,5500,0,null,0,"",null,null,5500,0,null,0,"",null,null,5500,0,null,0,"",null,null,5500,0,null,0,"",null,null,5500,0,null,0,""]
[null,null,null,null,null,5500,0,null,null,5500,0,null,0,"",null,null,5500,0,null,0,"",null,null,5500,0,null,0,"",null,null,5500,0,null,0,"",null,null,5500,0,null,0,""]
["Sub-Total A (excluding pass through)",null,null,null,null,null,{"$f":"SUM(G23:G38)","v":10933.5},null,null,null,{"$f":"SUM(K23:K38)","v":11774.45},null,840.95000000000073,7.6914986052041959E-2,null,null,null,{"$f":"SUM(R23:R38)","v":11852},null,77.549999999999272,6.5862949012479794E-3,null,null,null,{"$f":"SUM(Y23:Y38)","v":12176.5},null,324.5,2.7379345258184272E-2,null,null,null,{"$f":"SUM(AF23:AF38)","v":12500.45},null,323.95000000000073,2.6604525109842788E-2,null,null,null,{"$f":"SUM(AM23:AM38)","v":12737.5},null,237.04999999999927,1.8963317320576399E-2]
["Deferral/Variance Account Disposition Rate Rider (2016)",null,"per kW",null,0,5500,{"$f":"F40*E40","v":0},null,{"$f":"'Rates Summary'!F5","v":-0.56030000000000002},5500,{"$f":"J40*I40","v":-3081.65},null,{"$f":"K40-G40","v":-3081.65},"",null,0,5500,{"$f":"Q40*P40","v":0},null,3081.65,-1,null,0,5500,{"$f":"X40*W40","v":0},null,0,"",null,0,5500,{"$f":"AE40*AD40","v":0},null,0,"",null,0,5500,{"$f":"AL40*AK40","v":0},null,0,""]
[null,null,null,null,null,5500,{"$f":"F41*E41","v":0},null,null,5500,{"$f":"J41*I41","v":0},null,{"$f":"K41-G41","v":0},"",null,null,5500,{"$f":"Q41*P41","v":0},null,0,"",null,null,5500,{"$f":"X41*W41","v":0},null,0,"",null,null,5500,{"$f":"AE41*AD41","v":0},null,0,"",null,null,5500,{"$f":"AL41*AK41","v":0},null,0,""]
["Rate Rider CGAAP Account 1576 (2016)",null,"per kW",null,0,5500,0,null,{"$f":"'Rates Summary'!$F$8","v":-0.55130000000000001},5500,-3032.15,null,-3032.15,"",null,null,5500,0,null,3032.15,-1,null,null,5500,0,null,0,"",null,null,5500,0,null,0,"",null,null,5500,0,null,0,""]
["Disposition of Global Adjustment (2015)  \nApplicable to Non-RPP Customers",null,"per kW",null,null,5500,0,null,null,5500,0,null,0,"",null,null,5500,0,null,0,"",null,null,5500,0,null,0,"",null,null,5500,0,null,0,"",null,null,5500,0,null,0,""]
["Disposition of Global Adjustment (2016) \nApplicable to Non-RPP Customers",null,"per kW",null,null,5500,0,null,null,5500,0,null,0,"",null,null,5500,0,null,0,"",null,null,5500,0,null,0,"",null,null,5500,0,null,0,"",null,null,5500,0,null,0,""]
["Low Voltage Service Charge",null,"per kW",null,0.30359999999999998,5500,{"$f":"F45*E45","v":1669.8},null,{"$f":"'Rates Summary'!F15","v":0.56189999999999996},5500,{"$f":"J45*I45","v":3090.45},null,{"$f":"K45-G45","v":1420.6499999999999},{"$f":"IF((G45)=0,\"\",(M45/G45))","v":0.85079051383399207},null,{"$f":"I45","v":0.56189999999999996},5500,{"$f":"Q45*P45","v":3090.45},null,{"$f":"R45-K45","v":0},0,null,{"$f":"P45","v":0.56189999999999996},5500,{"$f":"X45*W45","v":3090.45},null,{"$f":"Y45-R45","v":0},0,null,{"$f":"W45","v":0.56189999999999996},5500,{"$f":"AE45*AD45","v":3090.45},null,{"$f":"AF45-Y45","v":0},0,null,{"$f":"AD45","v":0.56189999999999996},5500,{"$f":"AL45*AK45","v":3090.45},null,{"$f":"AM45-AF45","v":0},0]
["Line Losses on Cost of Power",null,"per kWh",null,{"$f":"IF(ISBLANK(C16)=TRUE, 0, IF(C16=\"TOU\", 0.64*$E$56+0.18*$E$57+0.18*$E$58, IF(AND(C16=\"non-TOU\", F60>0), E60,E59)))","v":0.10766000000000001},{"$f":"$E$18*(1+$E$75)-$E$18","v":62100},6685.6860000000006,null,{"$f":"E46","v":0.10766000000000001},{"$f":"$E$18*(1+$I$75)-$E$18","v":64859.999999999534},6982.8275999999505,null,297.1415999999499,4.4444444444436945E-2,null,{"$f":"I46","v":0.10766000000000001},{"$f":"$E$18*(1+$I$75)-$E$18","v":64859.999999999534},{"$f":"Q46*P46","v":6982.8275999999505},null,{"$f":"R46-K46","v":0},0,null,{"$f":"P46","v":0.10766000000000001},{"$f":"$E$18*(1+$I$75)-$E$18","v":64859.999999999534},{"$f":"X46*W46","v":6982.8275999999505},null,{"$f":"Y46-R46","v":0},0,null,{"$f":"W46","v":0.10766000000000001},{"$f":"$E$18*(1+$I$75)-$E$18","v":64859.999999999534},{"$f":"AE46*AD46","v":6982.8275999999505},null,{"$f":"AF46-Y46","v":0},0,null,{"$f":"AD46","v":0.10766000000000001},{"$f":"$E$18*(1+$I$75)-$E$18","v":64859.999999999534},{"$f":"AL46*AK46","v":6982.8275999999505},null,{"$f":"AM46-AF46","v":0},0]
["Smart Meter Entity Charge",null,null,null,0,1,{"$f":"F47*E47","v":0},null,{"$f":"E47","v":0},1,{"$f":"J47*I47","v":0},null,{"$f":"I47","v":0},null,null,{"$f":"M47","v":0},1,{"$f":"Q47*P47","v":0},null,{"$f":"R47-K47","v":0},"",null,{"$f":"P47","v":0},1,{"$f":"X47*W47","v":0},null,{"$f":"Y47-R47","v":0},"",null,{"$f":"W47","v":0},1,{"$f":"AE47*AD47","v":0},null,{"$f":"AF47-Y47","v":0},"",null,{"$f":"AD47","v":0},1,{"$f":"AL47*AK47","v":0},null,{"$f":"AM47-AF47","v":0},""]
["Sub-Total B - Distribution (includes Sub-Total A)",null,null,null,null,null,{"$f":"SUM(G40:G47)+G39","v":19288.986000000001},null,null,null,{"$f":"SUM(K40:K47)+K39","v":15733.927599999952},null,{"$f":"K48-G48","v":-3555.058400000049},{"$f":"IF((G48)=0,\"\",(M48/G48))","v":-0.18430509514600968},null,null,null,{"$f":"SUM(R40:R47)+R39","v":21925.27759999995},null,{"$f":"R48-K48","v":6191.3499999999985},0.39350314539390774,null,null,null,{"$f":"SUM(Y40:Y47)+Y39","v":22249.77759999995},null,{"$f":"Y48-R48","v":324.5},1.4800268709026549E-2,null,null,null,{"$f":"SUM(AF40:AF47)+AF39","v":22573.727599999951},null,{"$f":"AF48-Y48","v":323.95000000000073},1.4559696093321915E-2,null,null,null,{"$f":"SUM(AM40:AM47)+AM39","v":22810.77759999995},null,{"$f":"AM48-AF48","v":237.04999999999927},1.050114558837858E-2]
["RTSR - Network",null,"per kW",null,3.1703999999999999,{"$f":"$E$19","v":5500},{"$f":"F49*E49","v":17437.2},null,{"$f":"'Rates Summary'!F17","v":3.3492000000000002},{"$f":"$E$19","v":5500},{"$f":"J49*I49","v":18420.600000000002},null,983.40000000000146,5.6396669190007652E-2,null,{"$f":"I49","v":3.3492000000000002},{"$f":"$E$19","v":5500},{"$f":"Q49*P49","v":18420.600000000002},null,0,0,null,{"$f":"P49","v":3.3492000000000002},{"$f":"$E$19","v":5500},{"$f":"X49*W49","v":18420.600000000002},null,0,0,null,{"$f":"W49","v":3.3492000000000002},{"$f":"$E$19","v":5500},{"$f":"AE49*AD49","v":18420.600000000002},null,0,0,null,{"$f":"AD49","v":3.3492000000000002},{"$f":"$E$19","v":5500},{"$f":"AL49*AK49","v":18420.600000000002},null,0,0]
["RTSR - Line and Transformation Connection",null,"per kW",null,2.4253,5500,{"$f":"F50*E50","v":13339.15},null,{"$f":"'Rates Summary'!F18","v":2.6779999999999999},5500,{"$f":"J50*I50","v":14729},null,1389.8500000000004,0.10419329567476192,null,{"$f":"I50","v":2.6779999999999999},5500,{"$f":"Q50*P50","v":14729},null,0,0,null,{"$f":"P50","v":2.6779999999999999},5500,{"$f":"X50*W50","v":14729},null,0,0,null,{"$f":"W50","v":2.6779999999999999},5500,{"$f":"AE50*AD50","v":14729},null,0,0,null,{"$f":"AD50","v":2.6779999999999999},5500,{"$f":"AL50*AK50","v":14729},null,0,0]
["Sub-Total C - Delivery (including Sub-Total B)",null,null,null,null,null,{"$f":"SUM(G48:G50)","v":50065.336000000003},null,null,null,{"$f":"SUM(K48:K50)","v":48883.527599999958},null,-1181.8084000000454,-2.3605322453045061E-2,null,null,null,{"$f":"SUM(R48:R50)","v":55074.877599999949},null,6191.3499999999913,0.12665513934800393,null,null,null,{"$f":"SUM(Y48:Y50)","v":55399.377599999949},null,324.5,5.8919785960631953E-3,null,null,null,{"$f":"SUM(AF48:AF50)","v":55723.327599999953},null,323.95000000000437,5.847538619278724E-3,null,null,null,{"$f":"SUM(AM48:AM50)","v":55960.377599999949},null,237.04999999999563,4.2540531983591701E-3]
["Wholesale Market Service Charge (WMSC)",null,"per kWh",null,4.4000000000000003E-3,{"$f":"$E$18*(1+$E$75)","v":3512100},{"$f":"F52*E52","v":15453.240000000002},null,{"$f":"E52","v":4.4000000000000003E-3},{"$f":"$E$18*(1+I75)","v":3514859.9999999995},{"$f":"J52*I52","v":15465.383999999998},null,12.143999999996595,7.8585461689565381E-4,null,{"$f":"I52","v":4.4000000000000003E-3},{"$f":"$E$18*(1+P75)","v":3514859.9999999995},{"$f":"Q52*P52","v":15465.383999999998},null,0,0,null,{"$f":"P52","v":4.4000000000000003E-3},{"$f":"$E$18*(1+W75)","v":3514859.9999999995},{"$f":"X52*W52","v":15465.383999999998},null,0,0,null,{"$f":"W52","v":4.4000000000000003E-3},{"$f":"$E$18*(1+AD75)","v":3514859.9999999995},{"$f":"AE52*AD52","v":15465.383999999998},null,0,0,null,{"$f":"AD52","v":4.4000000000000003E-3},{"$f":"$E$18*(1+AK75)","v":3514859.9999999995},{"$f":"AL52*AK52","v":15465.383999999998},null,0,0]
["Rural and Remote Rate Protection (RRRP)",null,"per kWh",null,1.2999999999999999E-3,{"$f":"$E$18*(1+$E$75)","v":3512100},4565.7299999999996,null,{"$f":"E53","v":1.2999999999999999E-3},{"$f":"$E$18*(1+I75)","v":3514859.9999999995},4569.3179999999993,null,3.5879999999997381,7.8585461689581698E-4,null,{"$f":"I53","v":1.2999999999999999E-3},{"$f":"$E$18*(1+P75)","v":3514859.9999999995},4569.3179999999993,null,0,0,null,{"$f":"P53","v":1.2999999999999999E-3},{"$f":"$E$18*(1+W75)","v":3514859.9999999995},4569.3179999999993,null,0,0,null,{"$f":"W53","v":1.2999999999999999E-3},{"$f":"$E$18*(1+AD75)","v":3514859.9999999995},4569.3179999999993,null,0,0,null,{"$f":"AD53","v":1.2999999999999999E-3},{"$f":"$E$18*(1+AK75)","v":3514859.9999999995},4569.3179999999993,null,0,0]
["Standard Supply Service Charge",null,"Monthly",null,0.25,1,0.25,null,{"$f":"E54","v":0.25},1,0.25,null,0,0,null,{"$f":"I54","v":0.25},1,0.25,null,0,0,null,{"$f":"P54","v":0.25},1,0.25,null,0,0,null,{"$f":"W54","v":0.25},1,0.25,null,0,0,null,{"$f":"AD54","v":0.25},1,0.25,null,0,0]
["Debt Retirement Charge (DRC)",null,"per kWh",null,7.0000000000000001E-3,{"$f":"E18","v":3450000},24150,null,{"$f":"E55","v":7.0000000000000001E-3},{"$f":"E18","v":3450000},24150,null,0,0,null,{"$f":"I55","v":7.0000000000000001E-3},{"$f":"J55","v":3450000},24150,null,0,0,null,{"$f":"P55","v":7.0000000000000001E-3},{"$f":"Q55","v":3450000},24150,null,0,0,null,{"$f":"W55","v":7.0000000000000001E-3},{"$f":"X55","v":3450000},24150,null,0,0,null,{"$f":"AD55","v":7.0000000000000001E-3},{"$f":"AE55","v":3450000},24150,null,0,0]
["TOU - Off Peak",null,"per kWh",null,8.3000000000000004E-2,{"$f":"0.64*$E$18","v":2208000},183264,null,{"$f":"E56","v":8.3000000000000004E-2},{"$f":"F56","v":2208000},183264,null,0,0,null,{"$f":"I56","v":8.3000000000000004E-2},{"$f":"J56","v":2208000},183264,null,0,0,null,{"$f":"P56","v":8.3000000000000004E-2},{"$f":"Q56","v":2208000},183264,null,0,0,null,{"$f":"W56","v":8.3000000000000004E-2},{"$f":"X56","v":2208000},183264,null,0,0,null,{"$f":"AD56","v":8.3000000000000004E-2},{"$f":"AE56","v":2208000},183264,null,0,0]
["TOU - Mid Peak",null,"per kWh",null,0.128,{"$f":"0.18*$E$18","v":621000},79488,null,{"$f":"E57","v":0.128},{"$f":"F57","v":621000},79488,null,0,0,null,{"$f":"I57","v":0.128},621000,79488,null,0,0,null,{"$f":"P57","v":0.128},621000,79488,null,0,0,null,{"$f":"W57","v":0.128},621000,79488,null,0,0,null,{"$f":"AD57","v":0.128},621000,79488,null,0,0]
["TOU - On Peak",null,"per kWh",null,0.17499999999999999,{"$f":"0.18*$E$18","v":621000},108675,null,0.17499999999999999,{"$f":"F58","v":621000},108675,null,0,0,null,0.17499999999999999,621000,108675,null,0,0,null,0.17499999999999999,621000,108675,null,0,0,null,0.17499999999999999,621000,108675,null,0,0,null,0.17499999999999999,621000,108675,null,0,0]
["Energy - RPP - Tier 1",null,"per kWh",null,9.9000000000000005E-2,{"$f":"IF(AND($S$1=1, E18>=600), 600, IF(AND($S$1=1, AND(E18<600, E18>=0)), E18, IF(AND($S$1=2, E18>=1000), 1000, IF(AND($S$1=2, AND(E18<1000, E18>=0)), E18))))","v":600},{"$f":"F59*E59","v":59.400000000000006},null,9.9000000000000005E-2,{"$f":"F59","v":600},{"$f":"J59*I59","v":59.400000000000006},null,0,0,null,9.9000000000000005E-2,600,{"$f":"Q59*P59","v":59.400000000000006},null,0,0,null,9.9000000000000005E-2,600,{"$f":"X59*W59","v":59.400000000000006},null,0,0,null,9.9000000000000005E-2,600,{"$f":"AE59*AD59","v":59.400000000000006},null,0,0,null,9.9000000000000005E-2,600,{"$f":"AL59*AK59","v":59.400000000000006},null,0,0]
["Energy - RPP - Tier 2",null,"per kWh",null,0.11600000000000001,{"$f":"IF(AND($S$1=1, E18>=600), E18-600, IF(AND($S$1=1, AND(E18<600, E18>=0)), 0, IF(AND($S$1=2, E18>=1000), E18-1000, IF(AND($S$1=2, AND(E18<1000, E18>=0)), 0))))","v":3449400},{"$f":"F60*E60","v":400130.4},null,0.11600000000000001,{"$f":"F60","v":3449400},{"$f":"J60*I60","v":400130.4},null,0,0,null,0.11600000000000001,3449400,{"$f":"Q60*P60","v":400130.4},null,0,0,null,0.11600000000000001,3449400,{"$f":"X60*W60","v":400130.4},null,0,0,null,0.11600000000000001,3449400,{"$f":"AE60*AD60","v":400130.4},null,0,0,null,0.11600000000000001,3449400,{"$f":"AL60*AK60","v":400130.4},null,0,0]
[null,null,null,null,null,null,null,null,null,null,null,null,null,null,null,null,null,null,null,null,"",null,null,null,null,null,null,"",null,null,null,null,null,null,"",null,null,null,null,null,null,""]
["Total Bill on TOU (before Taxes)",null,null,null,null,null,{"$f":"SUM(G52:G58,G51)","v":465661.55599999998},null,null,null,{"$f":"SUM(K52:K58,K51)","v":464495.47959999996},null,{"$f":"K62-G62","v":-1166.0764000000199},{"$f":"IF((G62)=0,\"\",(M62/G62))","v":-2.5041285564059317E-3},null,null,null,{"$f":"SUM(R52:R58,R51)","v":470686.82959999994},null,{"$f":"R62-K62","v":6191.3499999999767},1.3329193225586726E-2,null,null,null,{"$f":"SUM(Y52:Y58,Y51)","v":471011.32959999994},null,{"$f":"Y62-R62","v":324.5},6.8941805802335122E-4,null,null,null,{"$f":"SUM(AF52:AF58,AF51)","v":471335.27959999995},null,{"$f":"AF62-Y62","v":323.95000000001164},6.8777538806788757E-4,null,null,null,{"$f":"SUM(AM52:AM58,AM51)","v":471572.32959999994},null,{"$f":"AM62-AF62","v":237.04999999998836},5.0293285960083766E-4]
["HST",null,null,null,0.13,null,{"$f":"G62*E63","v":60536.002280000001},null,0.13,null,{"$f":"K62*I63","v":60384.412347999998},null,-151.58993200000259,-2.5041285564059317E-3,null,0.13,null,{"$f":"R62*P63","v":61189.287847999993},null,{"$f":"R63-K63","v":804.87549999999464},1.3329193225586686E-2,null,0.13,null,{"$f":"Y62*W63","v":61231.472847999998},null,{"$f":"Y63-R63","v":42.185000000004948},6.8941805802343211E-4,null,0.13,null,{"$f":"AF62*AD63","v":61273.586347999997},null,{"$f":"AF63-Y63","v":42.113499999999476},6.8777538806785417E-4,null,0.13,null,{"$f":"AM62*AK63","v":61304.402847999991},null,{"$f":"AM63-AF63","v":30.816499999993539},5.0293285960075688E-4]
["Total Bill (including HST)",null,null,null,null,null,{"$f":"G62+G63","v":526197.55828},null,null,null,{"$f":"K62+K63","v":524879.89194799995},null,-1317.6663320000516,-2.5041285564059873E-3,null,null,null,{"$f":"R62+R63","v":531876.11744799989},null,6996.2254999999423,1.3329193225586667E-2,null,null,null,{"$f":"Y62+Y63","v":532242.80244799994},null,366.68500000005588,6.8941805802345639E-4,null,null,null,{"$f":"AF62+AF63","v":532608.86594799999},null,366.0635000000475,6.8777538806795208E-4,null,null,null,{"$f":"AM62+AM63","v":532876.73244799988},null,267.86649999988731,5.0293285960065074E-4]
["Ontario Clean Energy Benefit 1",null,null,null,null,null,null,null,null,null,null,null,0,"",null,null,null,null,null,0,"",null,null,null,null,null,0,"",null,null,null,null,null,0,"",null,null,null,null,null,0,""]
["Total Bill on TOU (including OCEB)",null,null,null,null,null,{"$f":"G64+G65","v":526197.55828},null,null,null,{"$f":"K64+K65","v":524879.89194799995},null,-1317.6663320000516,-2.5041285564059873E-3,null,null,null,{"$f":"R64+R65","v":531876.11744799989},null,6996.2254999999423,1.3329193225586667E-2,null,null,null,{"$f":"Y64+Y65","v":532242.80244799994},null,366.68500000005588,6.8941805802345639E-4,null,null,null,{"$f":"AF64+AF65","v":532608.86594799999},null,366.0635000000475,6.8777538806795208E-4,null,null,null,{"$f":"AM64+AM65","v":532876.73244799988},null,267.86649999988731,5.0293285960065074E-4]
[null,null,null,null,null,null,null,null,null,null,null,null,null,null,null,null,null,null,null,null,"",null,null,null,null,null,null,"",null,null,null,null,null,null,"",null,null,null,null,null,null,""]
["Total Bill on RPP (before Taxes)",null,null,null,null,null,{"$f":"SUM(G60:G61,G51,G52:G55)","v":494364.95600000001},null,null,null,{"$f":"SUM(K60:K61,K51,K52:K55)","v":493198.87959999999},null,{"$f":"K68-G68","v":-1166.0764000000199},{"$f":"IF((G68)=0,\"\",(M68/G68))","v":-2.3587359618589547E-3},null,null,null,{"$f":"SUM(R60:R61,R51,R52:R55)","v":499390.22959999996},null,{"$f":"R68-K68","v":6191.3499999999767},1.2553455119406108E-2,null,null,null,{"$f":"SUM(Y60:Y61,Y51,Y52:Y55)","v":499714.72959999996},null,{"$f":"Y68-R68","v":324.5},6.4979244840235859E-4,null,null,null,{"$f":"SUM(AF60:AF61,AF51,AF52:AF55)","v":500038.67960000003},null,{"$f":"AF68-Y68","v":323.95000000006985},6.4826986440719451E-4,null,null,null,{"$f":"SUM(AM60:AM61,AM51,AM52:AM55)","v":500275.72959999996},null,{"$f":"AM68-AF68","v":237.04999999993015},4.7406332684014657E-4]
["HST",null,null,null,0.13,null,{"$f":"G68*E69","v":64267.444280000003},null,0.13,null,{"$f":"K68*I69","v":64115.854348000001},null,-151.58993200000259,{"$f":"IF((G69)=0,\"\",(M69/G69))","v":-2.3587359618589547E-3},null,0.13,null,{"$f":"R68*P69","v":64920.729847999995},null,{"$f":"R69-K69","v":804.87549999999464},1.2553455119406072E-2,null,0.13,null,{"$f":"Y68*W69","v":64962.914848},null,{"$f":"Y69-R69","v":42.185000000004948},6.4979244840243481E-4,null,0.13,null,{"$f":"AF68*AD69","v":65005.028348000007},null,{"$f":"AF69-Y69","v":42.113500000006752},6.4826986440715863E-4,null,0.13,null,{"$f":"AM68*AK69","v":65035.844848000001},null,{"$f":"AM69-AF69","v":30.816499999993539},4.7406332684018685E-4]
["Total Bill (including HST)",null,null,null,null,null,{"$f":"G68+G69","v":558632.40028000006},null,null,null,{"$f":"K68+K69","v":557314.73394800001},null,-1317.6663320000516,-2.3587359618590068E-3,null,null,null,{"$f":"R68+R69","v":564310.95944799995},null,6996.2254999999423,1.2553455119406051E-2,null,null,null,{"$f":"Y68+Y69","v":564677.64444800001},null,366.68500000005588,6.4979244840245769E-4,null,null,null,{"$f":"AF68+AF69","v":565043.70794800005},null,366.0635000000475,6.4826986440713879E-4,null,null,null,{"$f":"AM68+AM69","v":565311.57444799994},null,267.86649999988731,4.7406332684008683E-4]
["Ontario Clean Energy Benefit 1",null,null,null,null,null,null,null,null,null,null,null,0,"",null,null,null,null,null,0,"",null,null,null,null,null,0,"",null,null,null,null,null,0,"",null,null,null,null,null,0,""]
["Total Bill on RPP (including OCEB)",null,null,null,null,null,{"$f":"SUM(G70:G71)","v":558632.40028000006},null,null,null,{"$f":"SUM(K70:K71)","v":557314.73394800001},null,-1317.6663320000516,-2.3587359618590068E-3,null,null,null,{"$f":"SUM(R70:R71)","v":564310.95944799995},null,6996.2254999999423,1.2553455119406051E-2,null,null,null,{"$f":"SUM(Y70:Y71)","v":564677.64444800001},null,366.68500000005588,6.4979244840245769E-4,null,null,null,{"$f":"SUM(AF70:AF71)","v":565043.70794800005},null,366.0635000000475,6.4826986440713879E-4,null,null,null,{"$f":"SUM(AM70:AM71)","v":565311.57444799994},null,267.86649999988731,4.7406332684008683E-4]
[]
[]
["Loss Factor (%)",null,null,null,1.7999999999999999E-2,null,null,null,1.8800000000000001E-2,null,null,null,null,null,null,1.8800000000000001E-2,null,null,null,null,null,null,1.8800000000000001E-2,null,null,null,null,null,null,1.8800000000000001E-2,null,null,null,null,null,null,1.8800000000000001E-2]
[]
["Distribution Excluding Rate Riders",null,null,null,"2015 Current Board-Approved",null,null,null,"2016 Test Year 1\nProposed",null,null,null,"Impact\n2016 TEST vs. \n2015 Bridge",null,null,"2017 Test Year 2\nProposed",null,null,null,"Impact\n2017 TEST 2 vs. \n2016 Test 1",null,null,"2018 Test Year 3\nProposed",null,null,null,"Impact\n2018 TEST 3 vs. \n2017 Test 2",null,null,"2019 Test Year 4\nProposed",null,null,null,"Impact\n2019 TEST 4 vs. \n2018 Test 3",null,null,"2020 Test Year 5 \nProposed",null,null,null,"Impact\n2019 TEST 5 vs. \n2019 Test 4"]
[null,null,"Charge Unit",null,"Rate","Volume","Charge",null,"Rate","Volume","Charge",null,"$ Change","% Change",null,"Rate","Volume","Charge",null,"$ Change","% Change",null,"Rate","Volume","Charge",null,"$ Change","% Change",null,"Rate","Volume","Charge",null,"$ Change","% Change",null,"Rate","Volume","Charge",null,"$ Change","% Change"]
[null,null,null,null,"($)",null,"($)",null,"($)",null,"($)",null,null,null,null,"($)",null,"($)",null,null,null,null,"($)",null,"($)",null,null,null,null,"($)",null,"($)",null,null,null,null,"($)",null,"($)"]
["Monthly Service Charge",null,"Monthly",null,{"$f":"'Rates Summary'!$D$31","v":5164},1,{"$f":"F80*E80","v":5164},null,{"$f":"'Rates Summary'!$E$31","v":5164},1,{"$f":"J80*I80","v":5164},null,{"$f":"K80-G80","v":0},{"$f":"IF((G80)=0,\"\",(M80/G80))","v":0},null,{"$f":"'Rates Summary'!$F$31","v":5164},1,{"$f":"Q80*P80","v":5164},null,{"$f":"R80-K80","v":0},{"$f":"IF((K80)=0,\"\",(T80/K80))","v":0},null,{"$f":"'Rates Summary'!$G$31","v":5164},1,{"$f":"X80*W80","v":5164},null,{"$f":"Y80-R80","v":0},{"$f":"IF((R80)=0,\"\",(AA80/R80))","v":0},null,{"$f":"'Rates Summary'!$H$31","v":5164},1,{"$f":"AE80*AD80","v":5164},null,{"$f":"AF80-Y80","v":0},{"$f":"IF((Y80)=0,\"\",(AH80/Y80))","v":0},null,{"$f":"'Rates Summary'!$I$31","v":5164},1,{"$f":"AL80*AK80","v":5164},null,{"$f":"AM80-AF80","v":0},{"$f":"IF((AF80)=0,\"\",(AO80/AF80))","v":0}]
["Distribution Volumetric Rate",null,"per kW",null,{"$f":"'Rates Summary'!$D$43","v":1.0535000000000001},{"$f":"$E$19","v":5500},{"$f":"F81*E81","v":5794.2500000000009},null,{"$f":"'Rates Summary'!$E$43","v":1.1548},{"$f":"$E$19","v":5500},{"$f":"J81*I81","v":6351.4000000000005},null,{"$f":"K81-G81","v":557.14999999999964},{"$f":"IF((G81)=0,\"\",(M81/G81))","v":9.615567157095388E-2},null,{"$f":"'Rates Summary'!$F$43","v":1.216},{"$f":"$E$19","v":5500},{"$f":"Q81*P81","v":6688},null,336.59999999999945,{"$f":"IF((K81)=0,\"\",(T81/K81))","v":5.2996189816418335E-2},null,{"$f":"'Rates Summary'!$G$43","v":1.2749999999999999},{"$f":"$E$19","v":5500},{"$f":"X81*W81","v":7012.4999999999991},null,324.49999999999909,{"$f":"IF((R81)=0,\"\",(AA81/R81))","v":4.8519736842105129E-2},null,{"$f":"'Rates Summary'!$H$43","v":1.3339000000000001},{"$f":"$E$19","v":5500},{"$f":"AE81*AD81","v":7336.4500000000007},null,323.95000000000164,{"$f":"IF((Y81)=0,\"\",(AH81/Y81))","v":4.6196078431372786E-2},null,{"$f":"'Rates Summary'!$I$43","v":1.377},{"$f":"$E$19","v":5500},{"$f":"AL81*AK81","v":7573.5},null,237.04999999999927,{"$f":"IF((AF81)=0,\"\",(AO81/AF81))","v":3.2311267711222627E-2}]
["\"Regular\" Distribution Only",null,null,null,null,null,{"$f":"SUM(G80:G81)","v":10958.25},null,null,null,{"$f":"SUM(K80:K81)","v":11515.400000000001},null,557.15000000000146,5.0842972189902719E-2,null,null,null,{"$f":"SUM(R80:R81)","v":11852},null,336.59999999999854,2.9230421869843731E-2,null,null,null,{"$f":"SUM(Y80:Y81)","v":12176.5},null,324.5,2.7379345258184272E-2,null,null,null,{"$f":"SUM(AF80:AF81)","v":12500.45},null,323.95000000000073,2.6604525109842788E-2,null,null,null,{"$f":"SUM(AM80:AM81)","v":12737.5},null,237.04999999999927,1.8963317320576399E-2]
[]
[]
[null,"Residential (kWh) - 100, 250, 500, 800, 1000, 1500, 2000"]
[null,"GS<50kW (kWh) - 1000, 2000, 5000, 10000, 15000"]
[null,"GS>50kW (kW) - 60, 100, 500, 1000"]
[null,"Large User - range appropriate for utility"]
[null,"Lighting Classes and USL - 150 kWh and 1 kW, range appropriate for utility."]
[]
[null,null,"Note that cells with the highlighted color shown to the left indicate quantities that are loss adjusted."]

{"sheet":"Bill Impact USL 750kWh","index":21,"n_rows":91,"n_cols":42,"rows_kept":91,"cut":false,"hidden":false,"merged":[[76,40,76,41],[76,22,76,24],[76,26,76,27],[76,29,76,31],[76,33,76,34],[76,36,76,38],[76,4,76,6],[76,8,76,10],[76,12,76,13],[76,15,76,17],[76,19,76,20],[19,40,19,41],[2,0,2,9],[9,0,9,13],[10,0,10,13],[13,2,13,13],[13,15,13,26],[19,4,19,6],[19,8,19,10],[19,12,19,13],[19,15,19,17],[19,19,19,20],[19,22,19,24],[19,26,19,27],[19,29,19,31],[19,33,19,34],[19,36,19,38],[20,34,21,34],[20,40,21,40],[20,41,21,41],[64,0,64,2],[20,2,21,2],[20,12,21,12],[20,13,21,13],[20,19,21,19],[20,20,21,20],[20,26,21,26],[65,0,65,2],[70,0,70,2],[71,0,71,2],[20,27,21,27],[20,33,21,33],[77,2,78,2],[77,12,78,12],[77,13,78,13],[77,19,78,19],[77,20,78,20],[77,41,78,41],[77,26,78,26],[77,27,78,27],[77,33,78,33],[77,34,78,34],[77,40,78,40]]}
[null,null,null,null,null,null,null,null,null,null,null,null,"File Number:",{"$f":"EBNUMBER","v":"EB-2015-0083"},null,null,null,null,1]
[null,null,null,null,null,null,null,null,null,null,null,null,"Exhibit:",{"$f":"'Bill Impact Resi 204kWh'!$N$2","v":8}]
[null,null,null,null,null,null,null,null,null,null,null,null,"Tab:",{"$f":"'Bill Impact Resi 204kWh'!$N$3","v":4}]
[null,null,null,null,null,null,null,null,null,null,null,null,"Schedule:",{"$f":"'Bill Impact Resi 204kWh'!$N$4","v":3}]
[null,null,null,null,null,null,null,null,null,null,null,null,"Page:"]
[]
[null,null,null,null,null,null,null,null,null,null,null,null,"Date:",{"$f":"'Bill Impact Resi 204kWh'!$N$7","v":"Settlement"}]
[]
[]
["Appendix 2-W"]
["Bill Impacts"]
[]
[]
["Customer Class:",null,"Unmetered Scattered Load",null,null,null,null,null,null,null,null,null,null,null,null,{"$f":"C14","v":"Unmetered Scattered Load"},null,null,null,null,null,null,null,null,null,null,null,null,null,null,null,null,null,null,null,null,{"$f":"P14","v":"Unmetered Scattered Load"}]
[]
["TOU / non-TOU:",null,"TOU"]
[]
[null,null,"Consumption",null,750," kWh"]
[]
[null,null,null,null,"2015 Current Board-Approved",null,null,null,"2016 Test Year 1\nProposed",null,null,null,"Impact\n2016 TEST vs. \n2015 Bridge",null,null,"2017 Test Year 2\nProposed",null,null,null,"Impact\n2017 TEST 2 vs. \n2016 Test 1",null,null,"2018 Test Year 3\nProposed",null,null,null,"Impact\n2018 TEST 3 vs. \n2017 Test 2",null,null,"2019 Test Year 4\nProposed",null,null,null,"Impact\n2019 TEST 4 vs. \n2018 Test 3",null,null,"2020 Test Year 5 \nProposed",null,null,null,"Impact\n2019 TEST 5 vs. \n2019 Test 4"]
[null,null,"Charge Unit",null,"Rate","Volume","Charge",null,"Rate","Volume","Charge",null,"$ Change","% Change",null,"Rate","Volume","Charge",null,"$ Change","% Change",null,"Rate","Volume","Charge",null,"$ Change","% Change",null,"Rate","Volume","Charge",null,"$ Change","% Change",null,"Rate","Volume","Charge",null,"$ Change","% Change"]
[null,null,null,null,"($)",null,"($)",null,"($)",null,"($)",null,null,null,null,"($)",null,"($)",null,null,null,null,"($)",null,"($)",null,null,null,null,"($)",null,"($)",null,null,null,null,"($)",null,"($)"]
["Monthly Service Charge",null,"Monthly",null,{"$f":"'Rates Summary'!$D$32","v":11.55},1,{"$f":"F23*E23","v":11.55},null,{"$f":"'Rates Summary'!$E$32","v":5.78},1,{"$f":"J23*I23","v":5.78},null,{"$f":"K23-G23","v":-5.7700000000000005},{"$f":"IF((G23)=0,\"\",(M23/G23))","v":-0.4995670995670996},null,{"$f":"'Rates Summary'!$F$32","v":5.95},1,{"$f":"Q23*P23","v":5.95},null,{"$f":"R23-K23","v":0.16999999999999993},{"$f":"IF((K23)=0,\"\",(T23/K23))","v":2.9411764705882339E-2},null,{"$f":"'Rates Summary'!$G$32","v":6.1},1,{"$f":"X23*W23","v":6.1},null,{"$f":"Y23-R23","v":0.14999999999999947},{"$f":"IF((R23)=0,\"\",(AA23/R23))","v":2.5210084033613356E-2},null,{"$f":"'Rates Summary'!$H$32","v":6.31},1,{"$f":"AE23*AD23","v":6.31},null,{"$f":"AF23-Y23","v":0.20999999999999996},{"$f":"IF((Y23)=0,\"\",(AH23/Y23))","v":3.4426229508196717E-2},null,{"$f":"'Rates Summary'!$I$32","v":6.46},1,{"$f":"AL23*AK23","v":6.46},null,{"$f":"AM23-AF23","v":0.15000000000000036},{"$f":"IF((AF23)=0,\"\",(AO23/AF23))","v":2.3771790808240944E-2}]
["Smart Meter (SMIRR) Rate Rider",null,"Monthly",null,0,1,{"$f":"F24*E24","v":0},null,0,1,{"$f":"J24*I24","v":0},null,{"$f":"K24-G24","v":0},{"$f":"IF((G24)=0,\"\",(M24/G24))","v":""},null,0,1,{"$f":"Q24*P24","v":0},null,0,{"$f":"IF((K24)=0,\"\",(T24/K24))","v":""},null,0,1,{"$f":"X24*W24","v":0},null,0,{"$f":"IF((R24)=0,\"\",(AA24/R24))","v":""},null,0,1,{"$f":"AE24*AD24","v":0},null,0,{"$f":"IF((Y24)=0,\"\",(AH24/Y24))","v":""},null,0,1,{"$f":"AL24*AK24","v":0},null,0,{"$f":"IF((AF24)=0,\"\",(AO24/AF24))","v":""}]
["Rate Rider Smart Meters Capital (2016)",null,"Monthly",null,0,1,0,null,0,1,{"$f":"J25*I25","v":0},null,{"$f":"K25-G25","v":0},{"$f":"IF((G25)=0,\"\",(M25/G25))","v":""},null,0,1,{"$f":"Q25*P25","v":0},null,0,"",null,0,1,{"$f":"X25*W25","v":0},null,0,"",null,0,1,{"$f":"AE25*AD25","v":0},null,0,"",null,0,1,{"$f":"AL25*AK25","v":0},null,0,""]
["Rate Rider Recovery of Stranded Meters",null,"Monthly",null,0,1,0,null,0,1,0,null,0,"",null,0,1,0,null,0,"",null,0,1,0,null,0,"",null,null,1,0,null,0,"",null,null,1,0,null,0,""]
[null,null,null,null,null,1,0,null,null,1,0,null,0,"",null,null,1,0,null,0,"",null,null,1,0,null,0,"",null,null,1,0,null,0,"",null,null,1,0,null,0,""]
[null,null,null,null,null,1,0,null,null,1,0,null,0,"",null,null,1,0,null,0,"",null,null,1,0,null,0,"",null,null,1,0,null,0,"",null,null,1,0,null,0,""]
["Distribution Volumetric Rate",null,"per kWh",null,{"$f":"'Rates Summary'!$D$44","v":1.41E-2},{"$f":"$E$18","v":750},10.574999999999999,null,{"$f":"'Rates Summary'!$E$44","v":1.15E-2},{"$f":"$E$18","v":750},8.625,null,-1.9499999999999993,-0.18439716312056731,null,{"$f":"'Rates Summary'!$F$44","v":1.18E-2},{"$f":"$E$18","v":750},8.85,null,0.22499999999999964,2.6086956521739091E-2,null,{"$f":"'Rates Summary'!$G$44","v":1.21E-2},{"$f":"$E$18","v":750},9.0749999999999993,null,0.22499999999999964,2.5423728813559282E-2,null,{"$f":"'Rates Summary'!$H$44","v":1.2500000000000001E-2},{"$f":"$E$18","v":750},9.375,null,0.30000000000000071,3.3057851239669506E-2,null,{"$f":"'Rates Summary'!$I$44","v":1.2800000000000001E-2},{"$f":"$E$18","v":750},9.6,null,0.22499999999999964,2.3999999999999962E-2]
["Rate Rider Tax Change (2015)",null,"per kWh",null,-1E-4,{"$f":"$E$18","v":750},-7.4999999999999997E-2,null,0,{"$f":"$E$18","v":750},0,null,7.4999999999999997E-2,-1,null,0,{"$f":"$E$18","v":750},0,null,0,"",null,0,{"$f":"$E$18","v":750},0,null,0,"",null,0,{"$f":"$E$18","v":750},0,null,0,"",null,0,{"$f":"$E$18","v":750},0,null,0,""]
["LRAM VA (2016)",null,"per kWh",null,0,{"$f":"$E$18","v":750},0,null,0,750,0,null,0,"",null,0,750,0,null,0,"",null,0,750,0,null,0,"",null,0,750,0,null,0,"",null,0,750,0,null,0,""]
["Rate Rider Incremental Capital 2012 True-Up (2016)",null,"per kWh",null,0,{"$f":"$E$18","v":750},0,null,{"$f":"'Rates Summary'!G9","v":2.0000000000000001E-4},750,0.15,null,0.15,"",null,0,750,0,null,-0.15,-1,null,0,750,0,null,0,"",null,0,750,0,null,0,"",null,0,750,0,null,0,""]
[null,null,null,null,null,750,{"$f":"F33*E33","v":0},null,null,750,{"$f":"J33*I33","v":0},null,{"$f":"K33-G33","v":0},{"$f":"IF((G33)=0,\"\",(M33/G33))","v":""},null,null,750,{"$f":"Q33*P33","v":0},null,{"$f":"R33-K33","v":0},{"$f":"IF((K33)=0,\"\",(T33/K33))","v":""},null,null,750,{"$f":"X33*W33","v":0},null,{"$f":"Y33-R33","v":0},{"$f":"IF((R33)=0,\"\",(AA33/R33))","v":""},null,null,750,{"$f":"AE33*AD33","v":0},null,{"$f":"AF33-Y33","v":0},{"$f":"IF((Y33)=0,\"\",(AH33/Y33))","v":""},null,null,750,{"$f":"AL33*AK33","v":0},null,{"$f":"AM33-AF33","v":0},{"$f":"IF((AF33)=0,\"\",(AO33/AF33))","v":""}]
[null,null,null,null,null,750,0,null,null,750,0,null,0,"",null,null,750,0,null,0,"",null,null,750,0,null,0,"",null,null,750,0,null,0,"",null,null,750,0,null,0,""]
[null,null,null,null,null,750,0,null,null,750,0,null,0,"",null,null,750,0,null,0,"",null,null,750,0,null,0,"",null,null,750,0,null,0,"",null,null,750,0,null,0,""]
[null,null,null,null,null,750,0,null,null,750,0,null,0,"",null,null,750,0,null,0,"",null,null,750,0,null,0,"",null,null,750,0,null,0,"",null,null,750,0,null,0,""]
[null,null,null,null,null,750,0,null,null,750,0,null,0,"",null,null,750,0,null,0,"",null,null,750,0,null,0,"",null,null,750,0,null,0,"",null,null,750,0,null,0,""]
[null,null,null,null,null,750,0,null,null,750,0,null,0,"",null,null,750,0,null,0,"",null,null,750,0,null,0,"",null,null,750,0,null,0,"",null,null,750,0,null,0,""]
["Sub-Total A (excluding pass through)",null,null,null,null,null,{"$f":"SUM(G23:G38)","v":22.05},null,null,null,{"$f":"SUM(K23:K38)","v":14.555000000000001},null,-7.4949999999999992,-0.33990929705215417,null,null,null,{"$f":"SUM(R23:R38)","v":14.8},null,0.24499999999999922,1.6832703538302934E-2,null,null,null,{"$f":"SUM(Y23:Y38)","v":15.174999999999999},null,0.37499999999999822,2.5337837837837718E-2,null,null,null,{"$f":"SUM(AF23:AF38)","v":15.684999999999999},null,0.50999999999999979,3.3607907742998343E-2,null,null,null,{"$f":"SUM(AM23:AM38)","v":16.059999999999999},null,0.375,2.3908192540643931E-2]
["Deferral/Variance Account Disposition Rate Rider (2016)",null,"per kWh",null,0,{"$f":"$E$18","v":750},{"$f":"F40*E40","v":0},null,{"$f":"'Rates Summary'!G5","v":2.9999999999999997E-4},{"$f":"$E$18","v":750},{"$f":"J40*I40","v":0.22499999999999998},null,{"$f":"K40-G40","v":0.22499999999999998},{"$f":"IF((G40)=0,\"\",(M40/G40))","v":""},null,0,{"$f":"$E$18","v":750},{"$f":"Q40*P40","v":0},null,-0.22499999999999998,-1,null,0,{"$f":"$E$18","v":750},{"$f":"X40*W40","v":0},null,0,"",null,0,{"$f":"$E$18","v":750},{"$f":"AE40*AD40","v":0},null,0,"",null,0,{"$f":"$E$18","v":750},{"$f":"AL40*AK40","v":0},null,0,""]
[null,null,null,null,null,{"$f":"$E$18","v":750},{"$f":"F41*E41","v":0},null,null,{"$f":"$E$18","v":750},{"$f":"J41*I41","v":0},null,{"$f":"K41-G41","v":0},{"$f":"IF((G41)=0,\"\",(M41/G41))","v":""},null,null,{"$f":"$E$18","v":750},{"$f":"Q41*P41","v":0},null,{"$f":"R41-K41","v":0},{"$f":"IF((K41)=0,\"\",(T41/K41))","v":""},null,null,{"$f":"$E$18","v":750},{"$f":"X41*W41","v":0},null,{"$f":"Y41-R41","v":0},{"$f":"IF((R41)=0,\"\",(AA41/R41))","v":""},null,null,{"$f":"$E$18","v":750},{"$f":"AE41*AD41","v":0},null,{"$f":"AF41-Y41","v":0},{"$f":"IF((Y41)=0,\"\",(AH41/Y41))","v":""},null,null,{"$f":"$E$18","v":750},{"$f":"AL41*AK41","v":0},null,{"$f":"AM41-AF41","v":0},{"$f":"IF((AF41)=0,\"\",(AO41/AF41))","v":""}]
["Rate Rider CGAAP Account 1576 (2016)",null,"per kWh",null,0,750,0,null,{"$f":"'Rates Summary'!$G$8","v":-6.0000000000000001E-3},750,-4.5,null,-4.5,"",null,null,750,0,null,4.5,-1,null,null,750,0,null,0,"",null,null,750,0,null,0,"",null,null,750,0,null,0,""]
["Disposition of Global Adjustment (2015)  \nApplicable to Non-RPP Customers",null,"per kWh",null,1.5599999999999999E-2,0,{"$f":"F43*E43","v":0},null,0,750,{"$f":"J43*I43","v":0},null,{"$f":"K43-G43","v":0},{"$f":"IF((G43)=0,\"\",(M43/G43))","v":""},null,0,750,{"$f":"Q43*P43","v":0},null,0,"",null,0,750,{"$f":"X43*W43","v":0},null,0,"",null,0,750,{"$f":"AE43*AD43","v":0},null,0,"",null,0,750,{"$f":"AL43*AK43","v":0},null,0,""]
["Disposition of Global Adjustment (2016) \nApplicable to Non-RPP Customers",null,"per kWh",null,0,750,0,null,{"$f":"'Rates Summary'!G6","v":2.0500000000000001E-2},0,0,null,0,"",null,0,750,0,null,0,"",null,0,750,0,null,0,"",null,0,750,0,null,0,"",null,0,750,0,null,0,""]
["Low Voltage Service Charge",null,"per kWh",null,6.9999999999999999E-4,750,{"$f":"F45*E45","v":0.52500000000000002},null,{"$f":"'Rates Summary'!G15","v":1.1999999999999999E-3},750,{"$f":"J45*I45","v":0.89999999999999991},null,{"$f":"K45-G45","v":0.37499999999999989},{"$f":"IF((G45)=0,\"\",(M45/G45))","v":0.71428571428571408},null,{"$f":"I45","v":1.1999999999999999E-3},750,{"$f":"Q45*P45","v":0.89999999999999991},null,{"$f":"R45-K45","v":0},0,null,{"$f":"P45","v":1.1999999999999999E-3},750,{"$f":"X45*W45","v":0.89999999999999991},null,{"$f":"Y45-R45","v":0},0,null,{"$f":"W45","v":1.1999999999999999E-3},750,{"$f":"AE45*AD45","v":0.89999999999999991},null,{"$f":"AF45-Y45","v":0},0,null,{"$f":"AD45","v":1.1999999999999999E-3},750,{"$f":"AL45*AK45","v":0.89999999999999991},null,{"$f":"AM45-AF45","v":0},0]
["Line Losses on Cost of Power",null,"per kWh",null,{"$f":"IF(ISBLANK(C16)=TRUE, 0, IF(C16=\"TOU\", 0.64*$E$56+0.18*$E$57+0.18*$E$58, IF(AND(C16=\"non-TOU\", F60>0), E60,E59)))","v":0.10766000000000001},{"$f":"$E$18*(1+$E$75)-$E$18","v":25.799999999999955},2.7776279999999951,null,{"$f":"E46","v":0.10766000000000001},{"$f":"$E$18*(1+$I$75)-$E$18","v":29.474999999999909},3.1732784999999906,null,0.39565049999999546,0.14244186046511489,null,{"$f":"I46","v":0.10766000000000001},{"$f":"$E$18*(1+$I$75)-$E$18","v":29.474999999999909},{"$f":"Q46*P46","v":3.1732784999999906},null,{"$f":"R46-K46","v":0},0,null,{"$f":"P46","v":0.10766000000000001},{"$f":"$E$18*(1+$I$75)-$E$18","v":29.474999999999909},{"$f":"X46*W46","v":3.1732784999999906},null,{"$f":"Y46-R46","v":0},0,null,{"$f":"W46","v":0.10766000000000001},{"$f":"$E$18*(1+$I$75)-$E$18","v":29.474999999999909},{"$f":"AE46*AD46","v":3.1732784999999906},null,{"$f":"AF46-Y46","v":0},0,null,{"$f":"AD46","v":0.10766000000000001},{"$f":"$E$18*(1+$I$75)-$E$18","v":29.474999999999909},{"$f":"AL46*AK46","v":3.1732784999999906},null,{"$f":"AM46-AF46","v":0},0]
["Smart Meter Entity Charge",null,"Monthly",null,0,1,{"$f":"F47*E47","v":0},null,0,1,{"$f":"J47*I47","v":0},null,{"$f":"K47-G47","v":0},null,null,0,1,{"$f":"Q47*P47","v":0},null,{"$f":"R47-K47","v":0},"",null,0,1,{"$f":"X47*W47","v":0},null,{"$f":"Y47-R47","v":0},"",null,0,1,{"$f":"AE47*AD47","v":0},null,{"$f":"AF47-Y47","v":0},"",null,0,1,{"$f":"AL47*AK47","v":0},null,{"$f":"AM47-AF47","v":0},""]
["Sub-Total B - Distribution (includes Sub-Total A)",null,null,null,null,null,{"$f":"SUM(G40:G47)+G39","v":25.352627999999996},null,null,null,{"$f":"SUM(K40:K47)+K39","v":14.353278499999991},null,{"$f":"K48-G48","v":-10.999349500000005},{"$f":"IF((G48)=0,\"\",(M48/G48))","v":-0.43385441146377435},null,null,null,{"$f":"SUM(R40:R47)+R39","v":18.873278499999991},null,{"$f":"R48-K48","v":4.5199999999999996},0.31491063174173078,null,null,null,{"$f":"SUM(Y40:Y47)+Y39","v":19.248278499999991},null,{"$f":"Y48-R48","v":0.375},1.9869361859943951E-2,null,null,null,{"$f":"SUM(AF40:AF47)+AF39","v":19.758278499999989},null,{"$f":"AF48-Y48","v":0.50999999999999801},2.6495875981844209E-2,null,null,null,{"$f":"SUM(AM40:AM47)+AM39","v":20.133278499999989},null,{"$f":"AM48-AF48","v":0.375},1.8979386286107881E-2]
["RTSR - Network",null,"per kWh",null,6.7000000000000002E-3,{"$f":"$E$18*(1+$E$75)","v":775.8},{"$f":"F49*E49","v":5.1978599999999995},null,{"$f":"'Rates Summary'!G17","v":7.1000000000000004E-3},{"$f":"$E$18*(1+$I$75)","v":779.47499999999991},{"$f":"J49*I49","v":5.5342724999999993},null,0.33641249999999978,6.472134686197778E-2,null,{"$f":"I49","v":7.1000000000000004E-3},{"$f":"$E$18*(1+P75)","v":779.47499999999991},{"$f":"Q49*P49","v":5.5342724999999993},null,0,0,null,{"$f":"P49","v":7.1000000000000004E-3},{"$f":"$E$18*(1+W75)","v":779.47499999999991},{"$f":"X49*W49","v":5.5342724999999993},null,0,0,null,{"$f":"W49","v":7.1000000000000004E-3},{"$f":"$E$18*(1+AD75)","v":779.47499999999991},{"$f":"AE49*AD49","v":5.5342724999999993},null,0,0,null,{"$f":"AD49","v":7.1000000000000004E-3},{"$f":"$E$18*(1+AK75)","v":779.47499999999991},{"$f":"AL49*AK49","v":5.5342724999999993},null,0,0]
["RTSR - Line and Transformation Connection",null,"per kWh",null,5.1000000000000004E-3,{"$f":"F49","v":775.8},{"$f":"F50*E50","v":3.9565800000000002},null,{"$f":"'Rates Summary'!G18","v":5.5999999999999999E-3},{"$f":"J49","v":779.47499999999991},{"$f":"J50*I50","v":4.3650599999999997},null,0.40847999999999951,0.10324067755485786,null,{"$f":"I50","v":5.5999999999999999E-3},{"$f":"Q49","v":779.47499999999991},{"$f":"Q50*P50","v":4.3650599999999997},null,0,0,null,{"$f":"P50","v":5.5999999999999999E-3},{"$f":"X49","v":779.47499999999991},{"$f":"X50*W50","v":4.3650599999999997},null,0,0,null,{"$f":"W50","v":5.5999999999999999E-3},{"$f":"AE49","v":779.47499999999991},{"$f":"AE50*AD50","v":4.3650599999999997},null,0,0,null,{"$f":"AD50","v":5.5999999999999999E-3},{"$f":"AL49","v":779.47499999999991},{"$f":"AL50*AK50","v":4.3650599999999997},null,0,0]
["Sub-Total C - Delivery (including Sub-Total B)",null,null,null,null,null,{"$f":"SUM(G48:G50)","v":34.507067999999997},null,null,null,{"$f":"SUM(K48:K50)","v":24.252610999999991},null,-10.254457000000006,-0.29716975664232054,null,null,null,{"$f":"SUM(R48:R50)","v":28.772610999999991},null,4.5199999999999996,0.18637168591868319,null,null,null,{"$f":"SUM(Y48:Y50)","v":29.147610999999991},null,0.375,1.3033228023692396E-2,null,null,null,{"$f":"SUM(AF48:AF50)","v":29.657610999999989},null,0.50999999999999801,1.7497145820973052E-2,null,null,null,{"$f":"SUM(AM48:AM50)","v":30.032610999999989},null,0.375,1.2644309078030599E-2]
["Wholesale Market Service Charge (WMSC)",null,"per kWh",null,4.4000000000000003E-3,{"$f":"F50","v":775.8},{"$f":"F52*E52","v":3.4135200000000001},null,{"$f":"E52","v":4.4000000000000003E-3},{"$f":"J50","v":779.47499999999991},{"$f":"J52*I52","v":3.4296899999999999},null,1.6169999999999796E-2,4.7370456303170317E-3,null,{"$f":"I52","v":4.4000000000000003E-3},{"$f":"Q50","v":779.47499999999991},{"$f":"Q52*P52","v":3.4296899999999999},null,0,0,null,{"$f":"P52","v":4.4000000000000003E-3},{"$f":"X50","v":779.47499999999991},{"$f":"X52*W52","v":3.4296899999999999},null,0,0,null,{"$f":"W52","v":4.4000000000000003E-3},{"$f":"AE50","v":779.47499999999991},{"$f":"AE52*AD52","v":3.4296899999999999},null,0,0,null,{"$f":"AD52","v":4.4000000000000003E-3},{"$f":"AL50","v":779.47499999999991},{"$f":"AL52*AK52","v":3.4296899999999999},null,0,0]
["Rural and Remote Rate Protection (RRRP)",null,"per kWh",null,1.2999999999999999E-3,{"$f":"F50","v":775.8},1.00854,null,{"$f":"E53","v":1.2999999999999999E-3},{"$f":"J50","v":779.47499999999991},1.0133174999999999,null,4.7774999999998791E-3,4.7370456303169719E-3,null,{"$f":"I53","v":1.2999999999999999E-3},{"$f":"Q50","v":779.47499999999991},1.0133174999999999,null,0,0,null,{"$f":"P53","v":1.2999999999999999E-3},{"$f":"X50","v":779.47499999999991},1.0133174999999999,null,0,0,null,{"$f":"W53","v":1.2999999999999999E-3},{"$f":"AE50","v":779.47499999999991},1.0133174999999999,null,0,0,null,{"$f":"AD53","v":1.2999999999999999E-3},{"$f":"AL50","v":779.47499999999991},1.0133174999999999,null,0,0]
["Standard Supply Service Charge",null,"Monthly",null,0.25,1,0.25,null,{"$f":"E54","v":0.25},1,0.25,null,0,0,null,{"$f":"I54","v":0.25},1,0.25,null,0,0,null,{"$f":"P54","v":0.25},1,0.25,null,0,0,null,{"$f":"W54","v":0.25},1,0.25,null,0,0,null,{"$f":"AD54","v":0.25},1,0.25,null,0,0]
["Debt Retirement Charge (DRC)",null,"per kWh",null,7.0000000000000001E-3,{"$f":"E18","v":750},5.25,null,{"$f":"E55","v":7.0000000000000001E-3},{"$f":"E18","v":750},5.25,null,0,0,null,{"$f":"I55","v":7.0000000000000001E-3},{"$f":"J55","v":750},5.25,null,0,0,null,{"$f":"P55","v":7.0000000000000001E-3},{"$f":"Q55","v":750},5.25,null,0,0,null,{"$f":"W55","v":7.0000000000000001E-3},{"$f":"X55","v":750},5.25,null,0,0,null,{"$f":"AD55","v":7.0000000000000001E-3},{"$f":"AE55","v":750},5.25,null,0,0]
["TOU - Off Peak",null,"per kWh",null,8.3000000000000004E-2,{"$f":"0.64*$E$18","v":480},39.840000000000003,null,{"$f":"E56","v":8.3000000000000004E-2},{"$f":"F56","v":480},39.840000000000003,null,0,0,null,{"$f":"I56","v":8.3000000000000004E-2},{"$f":"J56","v":480},39.840000000000003,null,0,0,null,{"$f":"P56","v":8.3000000000000004E-2},{"$f":"Q56","v":480},39.840000000000003,null,0,0,null,{"$f":"W56","v":8.3000000000000004E-2},{"$f":"X56","v":480},39.840000000000003,null,0,0,null,{"$f":"AD56","v":8.3000000000000004E-2},{"$f":"AE56","v":480},39.840000000000003,null,0,0]
["TOU - Mid Peak",null,"per kWh",null,0.128,{"$f":"0.18*$E$18","v":135},17.28,null,{"$f":"E57","v":0.128},{"$f":"F57","v":135},17.28,null,0,0,null,{"$f":"I57","v":0.128},135,17.28,null,0,0,null,{"$f":"P57","v":0.128},135,17.28,null,0,0,null,{"$f":"W57","v":0.128},135,17.28,null,0,0,null,{"$f":"AD57","v":0.128},135,17.28,null,0,0]
["TOU - On Peak",null,"per kWh",null,0.17499999999999999,{"$f":"0.18*$E$18","v":135},23.625,null,0.17499999999999999,{"$f":"F58","v":135},23.625,null,0,0,null,0.17499999999999999,135,23.625,null,0,0,null,0.17499999999999999,135,23.625,null,0,0,null,0.17499999999999999,135,23.625,null,0,0,null,0.17499999999999999,135,23.625,null,0,0]
["Energy - RPP - Tier 1",null,"per kWh",null,9.9000000000000005E-2,{"$f":"IF(AND($S$1=1, E18>=600), 600, IF(AND($S$1=1, AND(E18<600, E18>=0)), E18, IF(AND($S$1=2, E18>=1000), 1000, IF(AND($S$1=2, AND(E18<1000, E18>=0)), E18))))","v":600},{"$f":"F59*E59","v":59.400000000000006},null,9.9000000000000005E-2,{"$f":"F59","v":600},{"$f":"J59*I59","v":59.400000000000006},null,0,0,null,9.9000000000000005E-2,600,{"$f":"Q59*P59","v":59.400000000000006},null,0,0,null,9.9000000000000005E-2,600,{"$f":"X59*W59","v":59.400000000000006},null,0,0,null,9.9000000000000005E-2,600,{"$f":"AE59*AD59","v":59.400000000000006},null,0,0,null,9.9000000000000005E-2,600,{"$f":"AL59*AK59","v":59.400000000000006},null,0,0]
["Energy - RPP - Tier 2",null,"per kWh",null,0.11600000000000001,{"$f":"IF(AND($S$1=1, E18>=600), E18-600, IF(AND($S$1=1, AND(E18<600, E18>=0)), 0, IF(AND($S$1=2, E18>=1000), E18-1000, IF(AND($S$1=2, AND(E18<1000, E18>=0)), 0))))","v":150},{"$f":"F60*E60","v":17.400000000000002},null,0.11600000000000001,{"$f":"F60","v":150},{"$f":"J60*I60","v":17.400000000000002},null,0,0,null,0.11600000000000001,150,{"$f":"Q60*P60","v":17.400000000000002},null,0,0,null,0.11600000000000001,150,{"$f":"X60*W60","v":17.400000000000002},null,0,0,null,0.11600000000000001,150,{"$f":"AE60*AD60","v":17.400000000000002},null,0,0,null,0.11600000000000001,150,{"$f":"AL60*AK60","v":17.400000000000002},null,0,0]
[null,null,null,null,null,null,null,null,null,null,null,null,null,null,null,null,null,null,null,null,"",null,null,null,null,null,null,"",null,null,null,null,null,null,"",null,null,null,null,null,null,""]
["Total Bill on TOU (before Taxes)",null,null,null,null,null,{"$f":"SUM(G52:G58,G51)","v":125.174128},null,null,null,{"$f":"SUM(K52:K58,K51)","v":114.94061849999999},null,{"$f":"K62-G62","v":-10.233509500000011},{"$f":"IF((G62)=0,\"\",(M62/G62))","v":-8.1754190450601824E-2},null,null,null,{"$f":"SUM(R52:R58,R51)","v":119.46061849999998},null,{"$f":"R62-K62","v":4.519999999999996},3.932465353838336E-2,null,null,null,{"$f":"SUM(Y52:Y58,Y51)","v":119.83561849999998},null,{"$f":"Y62-R62","v":0.375},3.1391098146708496E-3,null,null,null,{"$f":"SUM(AF52:AF58,AF51)","v":120.34561849999999},null,{"$f":"AF62-Y62","v":0.51000000000000512},4.2558298307610867E-3,null,null,null,{"$f":"SUM(AM52:AM58,AM51)","v":120.72061849999999},null,{"$f":"AM62-AF62","v":0.375},3.1160253665570722E-3]
["HST",null,null,null,0.13,null,{"$f":"G62*E63","v":16.272636640000002},null,0.13,null,{"$f":"K62*I63","v":14.942280404999998},null,-1.3303562350000036,-8.1754190450601949E-2,null,0.13,null,{"$f":"R62*P63","v":15.529880404999998},null,{"$f":"R63-K63","v":0.58760000000000012},3.9324653538383401E-2,null,0.13,null,{"$f":"Y62*W63","v":15.578630404999998},null,{"$f":"Y63-R63","v":4.8750000000000071E-2},3.139109814670854E-3,null,0.13,null,{"$f":"AF62*AD63","v":15.644930404999998},null,{"$f":"AF63-Y63","v":6.6300000000000026E-2},4.2558298307610459E-3,null,0.13,null,{"$f":"AM62*AK63","v":15.693680404999999},null,{"$f":"AM63-AF63","v":4.8750000000000071E-2},3.1160253665570765E-3]
["Total Bill (including HST)",null,null,null,null,null,{"$f":"G62+G63","v":141.44676464},null,null,null,{"$f":"K62+K63","v":129.88289890499999},null,-11.563865735000007,-8.1754190450601796E-2,null,null,null,{"$f":"R62+R63","v":134.99049890499998},null,5.1075999999999908,3.9324653538383318E-2,null,null,null,{"$f":"Y62+Y63","v":135.41424890499997},null,0.42374999999998408,3.1391098146707317E-3,null,null,null,{"$f":"AF62+AF63","v":135.990548905},null,0.57630000000003179,4.2558298307612792E-3,null,null,null,{"$f":"AM62+AM63","v":136.41429890499998},null,0.42374999999998408,3.1160253665569546E-3]
["Ontario Clean Energy Benefit 1",null,null,null,null,null,{"$f":"ROUND(-G64*10%,2)","v":-14.14},null,null,null,null,null,14.14,-1,null,null,null,null,null,0,"",null,null,null,null,null,0,"",null,null,null,null,null,0,"",null,null,null,null,null,0,""]
["Total Bill on TOU (including OCEB)",null,null,null,null,null,{"$f":"G64+G65","v":127.30676464},null,null,null,{"$f":"K64+K65","v":129.88289890499999},null,2.5761342649999932,2.0235643190562771E-2,null,null,null,{"$f":"R64+R65","v":134.99049890499998},null,5.1075999999999908,3.9324653538383318E-2,null,null,null,{"$f":"Y64+Y65","v":135.41424890499997},null,0.42374999999998408,3.1391098146707317E-3,null,null,null,{"$f":"AF64+AF65","v":135.990548905},null,0.57630000000003179,4.2558298307612792E-3,null,null,null,{"$f":"AM64+AM65","v":136.41429890499998},null,0.42374999999998408,3.1160253665569546E-3]
[null,null,null,null,null,null,null,null,null,null,null,null,null,null,null,null,null,null,null,null,"",null,null,null,null,null,null,"",null,null,null,null,null,null,"",null,null,null,null,null,null,""]
["Total Bill on RPP (before Taxes)",null,null,null,null,null,{"$f":"SUM(G59:G60,G51,G52:G55)","v":121.22912800000002},null,null,null,{"$f":"SUM(K59:K60,K51,K52:K55)","v":110.99561849999999},null,{"$f":"SUM(M60:M61,M51,M52:M55)","v":-10.233509500000007},{"$f":"IF((G68)=0,\"\",(M68/G68))","v":-8.4414609498799711E-2},null,null,null,{"$f":"SUM(R59:R60,R51,R52:R55)","v":115.51561849999999},null,{"$f":"R68-K68","v":4.519999999999996},4.0722328152079233E-2,null,null,null,{"$f":"SUM(Y59:Y60,Y51,Y52:Y55)","v":115.89061849999999},null,{"$f":"Y68-R68","v":0.375},3.246314263555625E-3,null,null,null,{"$f":"SUM(AF59:AF60,AF51,AF52:AF55)","v":116.40061849999999},null,{"$f":"AF68-Y68","v":0.51000000000000512},4.4007013389095436E-3,null,null,null,{"$f":"SUM(AM59:AM60,AM51,AM52:AM55)","v":116.77561849999999},null,{"$f":"AM68-AF68","v":0.375},3.2216323661544807E-3]
["HST",null,null,null,0.13,null,{"$f":"G68*E69","v":15.759786640000003},null,0.13,null,{"$f":"K68*I69","v":14.429430405},null,{"$f":"K69-G69","v":-1.3303562350000036},{"$f":"IF((G69)=0,\"\",(M69/G69))","v":-8.4414609498799864E-2},null,0.13,null,{"$f":"R68*P69","v":15.017030404999998},null,{"$f":"R69-K69","v":0.58759999999999835},4.072232815207915E-2,null,0.13,null,{"$f":"Y68*W69","v":15.065780404999998},null,{"$f":"Y69-R69","v":4.8750000000000071E-2},3.2463142635556297E-3,null,0.13,null,{"$f":"AF68*AD69","v":15.132080405},null,{"$f":"AF69-Y69","v":6.6300000000001802E-2},4.4007013389096199E-3,null,0.13,null,{"$f":"AM68*AK69","v":15.180830405},null,{"$f":"AM69-AF69","v":4.8750000000000071E-2},3.2216323661544851E-3]
["Total Bill (including HST)",null,null,null,null,null,{"$f":"G68+G69","v":136.98891464000002},null,null,null,{"$f":"K68+K69","v":125.425048905},null,-11.563865735000022,-8.4414609498799809E-2,null,null,null,{"$f":"R68+R69","v":130.53264890499997},null,5.1075999999999766,4.0722328152079081E-2,null,null,null,{"$f":"Y68+Y69","v":130.95639890499999},null,0.42375000000001251,3.2463142635557212E-3,null,null,null,{"$f":"AF68+AF69","v":131.53269890499999},null,0.57630000000000337,4.4007013389095254E-3,null,null,null,{"$f":"AM68+AM69","v":131.956448905},null,0.42375000000001251,3.2216323661545757E-3]
["Ontario Clean Energy Benefit 1",null,null,null,null,null,{"$f":"ROUND(-G70*10%,2)","v":-13.7},null,null,null,null,null,13.7,-1,null,null,null,null,null,0,"",null,null,null,null,null,0,"",null,null,null,null,null,0,"",null,null,null,null,null,0,""]
["Total Bill on RPP (including OCEB)",null,null,null,null,null,{"$f":"SUM(G70:G71)","v":123.28891464000002},null,null,null,{"$f":"SUM(K70:K71)","v":125.425048905},null,2.1361342649999813,1.7326247629297655E-2,null,null,null,{"$f":"SUM(R70:R71)","v":130.53264890499997},null,5.1075999999999766,4.0722328152079081E-2,null,null,null,{"$f":"SUM(Y70:Y71)","v":130.95639890499999},null,0.42375000000001251,3.2463142635557212E-3,null,null,null,{"$f":"SUM(AF70:AF71)","v":131.53269890499999},null,0.57630000000000337,4.4007013389095254E-3,null,null,null,{"$f":"SUM(AM70:AM71)","v":131.956448905},null,0.42375000000001251,3.2216323661545757E-3]
[]
[]
["Loss Factor (%)",null,null,null,3.44E-2,null,null,null,3.9300000000000002E-2,null,null,null,null,null,null,3.9300000000000002E-2,null,null,null,null,null,null,3.9300000000000002E-2,null,null,null,null,null,null,3.9300000000000002E-2,null,null,null,null,null,null,3.9300000000000002E-2]
[]
["Distribution Excluding Rate Riders",null,null,null,"2015 Current Board-Approved",null,null,null,"2016 Test Year 1\nProposed",null,null,null,"Impact\n2016 TEST vs. \n2015 Bridge",null,null,"2017 Test Year 2\nProposed",null,null,null,"Impact\n2017 TEST 2 vs. \n2016 Test 1",null,null,"2018 Test Year 3\nProposed",null,null,null,"Impact\n2018 TEST 3 vs. \n2017 Test 2",null,null,"2019 Test Year 4\nProposed",null,null,null,"Impact\n2019 TEST 4 vs. \n2018 Test 3",null,null,"2020 Test Year 5 \nProposed",null,null,null,"Impact\n2019 TEST 5 vs. \n2019 Test 4"]
[null,null,"Charge Unit",null,"Rate","Volume","Charge",null,"Rate","Volume","Charge",null,"$ Change","% Change",null,"Rate","Volume","Charge",null,"$ Change","% Change",null,"Rate","Volume","Charge",null,"$ Change","% Change",null,"Rate","Volume","Charge",null,"$ Change","% Change",null,"Rate","Volume","Charge",null,"$ Change","% Change"]
[null,null,null,null,"($)",null,"($)",null,"($)",null,"($)",null,null,null,null,"($)",null,"($)",null,null,null,null,"($)",null,"($)",null,null,null,null,"($)",null,"($)",null,null,null,null,"($)",null,"($)"]
["Monthly Service Charge",null,"Monthly",null,{"$f":"'Rates Summary'!$D$32","v":11.55},1,{"$f":"F80*E80","v":11.55},null,{"$f":"'Rates Summary'!$E$32","v":5.78},1,{"$f":"J80*I80","v":5.78},null,{"$f":"K80-G80","v":-5.7700000000000005},{"$f":"IF((G80)=0,\"\",(M80/G80))","v":-0.4995670995670996},null,{"$f":"'Rates Summary'!$F$32","v":5.95},1,{"$f":"Q80*P80","v":5.95},null,{"$f":"R80-K80","v":0.16999999999999993},{"$f":"IF((K80)=0,\"\",(T80/K80))","v":2.9411764705882339E-2},null,{"$f":"'Rates Summary'!$G$32","v":6.1},1,{"$f":"X80*W80","v":6.1},null,{"$f":"Y80-R80","v":0.14999999999999947},{"$f":"IF((R80)=0,\"\",(AA80/R80))","v":2.5210084033613356E-2},null,{"$f":"'Rates Summary'!$H$32","v":6.31},1,{"$f":"AE80*AD80","v":6.31},null,{"$f":"AF80-Y80","v":0.20999999999999996},{"$f":"IF((Y80)=0,\"\",(AH80/Y80))","v":3.4426229508196717E-2},null,{"$f":"'Rates Summary'!$I$32","v":6.46},1,{"$f":"AL80*AK80","v":6.46},null,{"$f":"AM80-AF80","v":0.15000000000000036},{"$f":"IF((AF80)=0,\"\",(AO80/AF80))","v":2.3771790808240944E-2}]
["Distribution Volumetric Rate",null,"per kWh",null,{"$f":"'Rates Summary'!$D$44","v":1.41E-2},{"$f":"$E$18","v":750},{"$f":"F81*E81","v":10.574999999999999},null,{"$f":"'Rates Summary'!$E$44","v":1.15E-2},{"$f":"$E$18","v":750},{"$f":"J81*I81","v":8.625},null,{"$f":"K81-G81","v":-1.9499999999999993},{"$f":"IF((G81)=0,\"\",(M81/G81))","v":-0.18439716312056731},null,{"$f":"'Rates Summary'!$F$44","v":1.18E-2},{"$f":"$E$18","v":750},{"$f":"Q81*P81","v":8.85},null,0.22499999999999964,{"$f":"IF((K81)=0,\"\",(T81/K81))","v":2.6086956521739091E-2},null,{"$f":"'Rates Summary'!$G$44","v":1.21E-2},{"$f":"$E$18","v":750},{"$f":"X81*W81","v":9.0749999999999993},null,0.22499999999999964,{"$f":"IF((R81)=0,\"\",(AA81/R81))","v":2.5423728813559282E-2},null,{"$f":"'Rates Summary'!$H$44","v":1.2500000000000001E-2},{"$f":"$E$18","v":750},{"$f":"AE81*AD81","v":9.375},null,0.30000000000000071,{"$f":"IF((Y81)=0,\"\",(AH81/Y81))","v":3.3057851239669506E-2},null,{"$f":"'Rates Summary'!$I$44","v":1.2800000000000001E-2},{"$f":"$E$18","v":750},{"$f":"AL81*AK81","v":9.6},null,0.22499999999999964,{"$f":"IF((AF81)=0,\"\",(AO81/AF81))","v":2.3999999999999962E-2}]
["\"Regular\" Distribution Only",null,null,null,null,null,{"$f":"SUM(G80:G81)","v":22.125},null,null,null,{"$f":"SUM(K80:K81)","v":14.405000000000001},null,-7.7199999999999989,-0.34892655367231634,null,null,null,{"$f":"SUM(R80:R81)","v":14.8},null,0.39499999999999957,2.7421034363068347E-2,null,null,null,{"$f":"SUM(Y80:Y81)","v":15.174999999999999},null,0.37499999999999822,2.5337837837837718E-2,null,null,null,{"$f":"SUM(AF80:AF81)","v":15.684999999999999},null,0.50999999999999979,3.3607907742998343E-2,null,null,null,{"$f":"SUM(AM80:AM81)","v":16.059999999999999},null,0.375,2.3908192540643931E-2]
[]
[]
[null,"Residential (kWh) - 100, 250, 500, 800, 1000, 1500, 2000"]
[null,"GS<50kW (kWh) - 1000, 2000, 5000, 10000, 15000"]
[null,"GS>50kW (kW) - 60, 100, 500, 1000"]
[null,"Large User - range appropriate for utility"]
[null,"Lighting Classes and USL - 150 kWh and 1 kW, range appropriate for utility."]
[]
[null,null,"Note that cells with the highlighted color shown to the left indicate quantities that are loss adjusted."]

{"sheet":"Bill Impact USL 150kWh","index":22,"n_rows":91,"n_cols":42,"rows_kept":91,"cut":false,"hidden":false,"merged":[[19,33,19,34],[19,36,19,38],[20,20,21,20],[20,26,21,26],[19,40,19,41],[19,22,19,24],[19,26,19,27],[19,29,19,31],[20,27,21,27],[20,33,21,33],[20,34,21,34],[20,40,21,40],[20,41,21,41],[2,0,2,9],[9,0,9,13],[10,0,10,13],[13,2,13,13],[13,15,13,26],[19,4,19,6],[19,8,19,10],[19,12,19,13],[19,15,19,17],[19,19,19,20],[64,0,64,2],[20,2,21,2],[20,12,21,12],[20,13,21,13],[20,19,21,19],[76,29,76,31],[76,33,76,34],[77,34,78,34],[65,0,65,2],[70,0,70,2],[71,0,71,2],[76,4,76,6],[76,8,76,10],[76,12,76,13],[77,40,78,40],[77,41,78,41],[76,36,76,38],[76,40,76,41],[77,2,78,2],[77,12,78,12],[77,13,78,13],[77,19,78,19],[77,20,78,20],[77,26,78,26],[77,27,78,27],[77,33,78,33],[76,15,76,17],[76,19,76,20],[76,22,76,24],[76,26,76,27]]}
[null,null,null,null,null,null,null,null,null,null,null,null,"File Number:",{"$f":"EBNUMBER","v":"EB-2015-0083"},null,null,null,null,1]
[null,null,null,null,null,null,null,null,null,null,null,null,"Exhibit:",{"$f":"'Bill Impact Resi 204kWh'!$N$2","v":8}]
[null,null,null,null,null,null,null,null,null,null,null,null,"Tab:",{"$f":"'Bill Impact Resi 204kWh'!$N$3","v":4}]
[null,null,null,null,null,null,null,null,null,null,null,null,"Schedule:",{"$f":"'Bill Impact Resi 204kWh'!$N$4","v":3}]
[null,null,null,null,null,null,null,null,null,null,null,null,"Page:"]
[]
[null,null,null,null,null,null,null,null,null,null,null,null,"Date:",{"$f":"'Bill Impact Resi 204kWh'!$N$7","v":"Settlement"}]
[]
[]
["Appendix 2-W"]
["Bill Impacts"]
[]
[]
["Customer Class:",null,"Unmetered Scattered Load",null,null,null,null,null,null,null,null,null,null,null,null,{"$f":"C14","v":"Unmetered Scattered Load"},null,null,null,null,null,null,null,null,null,null,null,null,null,null,null,null,null,null,null,null,{"$f":"P14","v":"Unmetered Scattered Load"}]
[]
["TOU / non-TOU:",null,"TOU"]
[]
[null,null,"Consumption",null,150," kWh"]
[]
[null,null,null,null,"2015 Current Board-Approved",null,null,null,"2016 Test Year 1\nProposed",null,null,null,"Impact\n2016 TEST vs. \n2015 Bridge",null,null,"2017 Test Year 2\nProposed",null,null,null,"Impact\n2017 TEST 2 vs. \n2016 Test 1",null,null,"2018 Test Year 3\nProposed",null,null,null,"Impact\n2018 TEST 3 vs. \n2017 Test 2",null,null,"2019 Test Year 4\nProposed",null,null,null,"Impact\n2019 TEST 4 vs. \n2018 Test 3",null,null,"2020 Test Year 5 \nProposed",null,null,null,"Impact\n2019 TEST 5 vs. \n2019 Test 4"]
[null,null,"Charge Unit",null,"Rate","Volume","Charge",null,"Rate","Volume","Charge",null,"$ Change","% Change",null,"Rate","Volume","Charge",null,"$ Change","% Change",null,"Rate","Volume","Charge",null,"$ Change","% Change",null,"Rate","Volume","Charge",null,"$ Change","% Change",null,"Rate","Volume","Charge",null,"$ Change","% Change"]
[null,null,null,null,"($)",null,"($)",null,"($)",null,"($)",null,null,null,null,"($)",null,"($)",null,null,null,null,"($)",null,"($)",null,null,null,null,"($)",null,"($)",null,null,null,null,"($)",null,"($)"]
["Monthly Service Charge",null,"Monthly",null,{"$f":"'Rates Summary'!$D$32","v":11.55},1,{"$f":"F23*E23","v":11.55},null,{"$f":"'Rates Summary'!$E$32","v":5.78},1,{"$f":"J23*I23","v":5.78},null,{"$f":"K23-G23","v":-5.7700000000000005},{"$f":"IF((G23)=0,\"\",(M23/G23))","v":-0.4995670995670996},null,{"$f":"'Rates Summary'!$F$32","v":5.95},1,{"$f":"Q23*P23","v":5.95},null,{"$f":"R23-K23","v":0.16999999999999993},{"$f":"IF((K23)=0,\"\",(T23/K23))","v":2.9411764705882339E-2},null,{"$f":"'Rates Summary'!$G$32","v":6.1},1,{"$f":"X23*W23","v":6.1},null,{"$f":"Y23-R23","v":0.14999999999999947},{"$f":"IF((R23)=0,\"\",(AA23/R23))","v":2.5210084033613356E-2},null,{"$f":"'Rates Summary'!$H$32","v":6.31},1,{"$f":"AE23*AD23","v":6.31},null,{"$f":"AF23-Y23","v":0.20999999999999996},{"$f":"IF((Y23)=0,\"\",(AH23/Y23))","v":3.4426229508196717E-2},null,{"$f":"'Rates Summary'!$I$32","v":6.46},1,{"$f":"AL23*AK23","v":6.46},null,{"$f":"AM23-AF23","v":0.15000000000000036},{"$f":"IF((AF23)=0,\"\",(AO23/AF23))","v":2.3771790808240944E-2}]
["Smart Meter (SMIRR) Rate Rider",null,"Monthly",null,0,1,{"$f":"F24*E24","v":0},null,0,1,{"$f":"J24*I24","v":0},null,{"$f":"K24-G24","v":0},{"$f":"IF((G24)=0,\"\",(M24/G24))","v":""},null,0,1,{"$f":"Q24*P24","v":0},null,0,{"$f":"IF((K24)=0,\"\",(T24/K24))","v":""},null,0,1,{"$f":"X24*W24","v":0},null,0,{"$f":"IF((R24)=0,\"\",(AA24/R24))","v":""},null,0,1,{"$f":"AE24*AD24","v":0},null,0,{"$f":"IF((Y24)=0,\"\",(AH24/Y24))","v":""},null,0,1,{"$f":"AL24*AK24","v":0},null,0,{"$f":"IF((AF24)=0,\"\",(AO24/AF24))","v":""}]
["Rate Rider Smart Meters Capital (2016)",null,"Monthly",null,0,1,0,null,0,1,{"$f":"J25*I25","v":0},null,{"$f":"K25-G25","v":0},{"$f":"IF((G25)=0,\"\",(M25/G25))","v":""},null,0,1,{"$f":"Q25*P25","v":0},null,0,"",null,0,1,{"$f":"X25*W25","v":0},null,0,"",null,0,1,{"$f":"AE25*AD25","v":0},null,0,"",null,0,1,{"$f":"AL25*AK25","v":0},null,0,""]
["Rate Rider Recovery of Stranded Meters",null,"Monthly",null,0,1,0,null,0,1,0,null,0,"",null,0,1,0,null,0,"",null,0,1,0,null,0,"",null,null,1,0,null,0,"",null,null,1,0,null,0,""]
[null,null,null,null,null,1,0,null,null,1,0,null,0,"",null,null,1,0,null,0,"",null,null,1,0,null,0,"",null,null,1,0,null,0,"",null,null,1,0,null,0,""]
[null,null,null,null,null,1,0,null,null,1,0,null,0,"",null,null,1,0,null,0,"",null,null,1,0,null,0,"",null,null,1,0,null,0,"",null,null,1,0,null,0,""]
["Distribution Volumetric Rate",null,"per kWh",null,{"$f":"'Rates Summary'!$D$44","v":1.41E-2},{"$f":"$E$18","v":150},2.1149999999999998,null,{"$f":"'Rates Summary'!$E$44","v":1.15E-2},{"$f":"$E$18","v":150},1.7249999999999999,null,-0.3899999999999999,-0.18439716312056734,null,{"$f":"'Rates Summary'!$F$44","v":1.18E-2},{"$f":"$E$18","v":150},1.77,null,4.5000000000000151E-2,2.6086956521739219E-2,null,{"$f":"'Rates Summary'!$G$44","v":1.21E-2},{"$f":"$E$18","v":150},1.8149999999999999,null,4.4999999999999929E-2,2.5423728813559282E-2,null,{"$f":"'Rates Summary'!$H$44","v":1.2500000000000001E-2},{"$f":"$E$18","v":150},1.875,null,6.0000000000000053E-2,3.305785123966945E-2,null,{"$f":"'Rates Summary'!$I$44","v":1.2800000000000001E-2},{"$f":"$E$18","v":150},1.9200000000000002,null,4.5000000000000151E-2,2.400000000000008E-2]
["Rate Rider Tax Change (2015)",null,"per kWh",null,-1E-4,{"$f":"$E$18","v":150},-1.5000000000000001E-2,null,0,{"$f":"$E$18","v":150},0,null,1.5000000000000001E-2,-1,null,0,{"$f":"$E$18","v":150},0,null,0,"",null,0,{"$f":"$E$18","v":150},0,null,0,"",null,0,{"$f":"$E$18","v":150},0,null,0,"",null,0,{"$f":"$E$18","v":150},0,null,0,""]
["LRAM VA (2016)",null,"per kWh",null,0,{"$f":"$E$18","v":150},0,null,0,150,0,null,0,"",null,0,150,0,null,0,"",null,0,150,0,null,0,"",null,0,150,0,null,0,"",null,0,150,0,null,0,""]
["Rate Rider Incremental Capital 2012 True-Up (2016)",null,"per kWh",null,0,{"$f":"$E$18","v":150},0,null,{"$f":"'Rates Summary'!G9","v":2.0000000000000001E-4},150,3.0000000000000002E-2,null,3.0000000000000002E-2,"",null,0,150,0,null,-3.0000000000000002E-2,-1,null,0,150,0,null,0,"",null,0,150,0,null,0,"",null,0,150,0,null,0,""]
[null,null,null,null,null,150,0,null,null,150,0,null,0,"",null,null,150,0,null,0,"",null,null,150,0,null,0,"",null,null,150,0,null,0,"",null,null,150,0,null,0,""]
[null,null,null,null,null,150,0,null,null,150,0,null,0,"",null,null,150,0,null,0,"",null,null,150,0,null,0,"",null,null,150,0,null,0,"",null,null,150,0,null,0,""]
[null,null,null,null,null,150,0,null,null,150,0,null,0,"",null,null,150,0,null,0,"",null,null,150,0,null,0,"",null,null,150,0,null,0,"",null,null,150,0,null,0,""]
[null,null,null,null,null,150,0,null,null,150,0,null,0,"",null,null,150,0,null,0,"",null,null,150,0,null,0,"",null,null,150,0,null,0,"",null,null,150,0,null,0,""]
[null,null,null,null,null,150,0,null,null,150,0,null,0,"",null,null,150,0,null,0,"",null,null,150,0,null,0,"",null,null,150,0,null,0,"",null,null,150,0,null,0,""]
[null,null,null,null,null,150,0,null,null,150,0,null,0,"",null,null,150,0,null,0,"",null,null,150,0,null,0,"",null,null,150,0,null,0,"",null,null,150,0,null,0,""]
["Sub-Total A (excluding pass through)",null,null,null,null,null,{"$f":"SUM(G23:G38)","v":13.65},null,null,null,{"$f":"SUM(K23:K38)","v":7.5350000000000001},null,-6.1150000000000002,-0.447985347985348,null,null,null,{"$f":"SUM(R23:R38)","v":7.7200000000000006},null,0.1850000000000005,2.4552090245520967E-2,null,null,null,{"$f":"SUM(Y23:Y38)","v":7.9149999999999991},null,0.19499999999999851,2.5259067357512759E-2,null,null,null,{"$f":"SUM(AF23:AF38)","v":8.1849999999999987},null,0.26999999999999957,3.4112444725205256E-2,null,null,null,{"$f":"SUM(AM23:AM38)","v":8.3800000000000008},null,0.19500000000000206,2.3824068417837765E-2]
["Deferral/Variance Account Disposition Rate Rider (2016)",null,"per kWh",null,0,{"$f":"$E$18","v":150},{"$f":"F40*E40","v":0},null,{"$f":"'Rates Summary'!G5","v":2.9999999999999997E-4},{"$f":"$E$18","v":150},{"$f":"J40*I40","v":4.4999999999999998E-2},null,{"$f":"K40-G40","v":4.4999999999999998E-2},{"$f":"IF((G40)=0,\"\",(M40/G40))","v":""},null,0,{"$f":"$E$18","v":150},{"$f":"Q40*P40","v":0},null,-4.4999999999999998E-2,-1,null,0,{"$f":"$E$18","v":150},{"$f":"X40*W40","v":0},null,0,"",null,0,{"$f":"$E$18","v":150},{"$f":"AE40*AD40","v":0},null,0,"",null,0,{"$f":"$E$18","v":150},{"$f":"AL40*AK40","v":0},null,0,""]
[null,null,null,null,null,{"$f":"$E$18","v":150},{"$f":"F41*E41","v":0},null,null,{"$f":"$E$18","v":150},{"$f":"J41*I41","v":0},null,{"$f":"K41-G41","v":0},{"$f":"IF((G41)=0,\"\",(M41/G41))","v":""},null,null,{"$f":"$E$18","v":150},{"$f":"Q41*P41","v":0},null,0,"",null,null,{"$f":"$E$18","v":150},{"$f":"X41*W41","v":0},null,0,"",null,null,{"$f":"$E$18","v":150},{"$f":"AE41*AD41","v":0},null,0,"",null,null,{"$f":"$E$18","v":150},{"$f":"AL41*AK41","v":0},null,0,""]
["Rate Rider CGAAP Account 1576 (2016)",null,"per kWh",null,0,150,0,null,{"$f":"'Rates Summary'!$G$8","v":-6.0000000000000001E-3},150,-0.9,null,-0.9,"",null,null,150,0,null,0.9,-1,null,null,150,0,null,0,"",null,null,150,0,null,0,"",null,null,150,0,null,0,""]
["Disposition of Global Adjustment (2015)  \nApplicable to Non-RPP Customers",null,"per kWh",null,1.5599999999999999E-2,0,0,null,0,150,0,null,0,"",null,0,150,0,null,0,"",null,0,150,0,null,0,"",null,0,150,0,null,0,"",null,0,150,0,null,0,""]
["Disposition of Global Adjustment (2016) \nApplicable to Non-RPP Customers",null,"per kWh",null,0,150,0,null,{"$f":"'Rates Summary'!G6","v":2.0500000000000001E-2},0,0,null,0,"",null,0,150,0,null,0,"",null,0,150,0,null,0,"",null,0,150,0,null,0,"",null,0,150,0,null,0,""]
["Low Voltage Service Charge",null,"per kWh",null,6.9999999999999999E-4,150,{"$f":"F45*E45","v":0.105},null,{"$f":"'Rates Summary'!G15","v":1.1999999999999999E-3},150,{"$f":"J45*I45","v":0.18},null,{"$f":"K45-G45","v":7.4999999999999997E-2},{"$f":"IF((G45)=0,\"\",(M45/G45))","v":0.7142857142857143},null,{"$f":"I45","v":1.1999999999999999E-3},150,{"$f":"Q45*P45","v":0.18},null,{"$f":"R45-K45","v":0},0,null,{"$f":"P45","v":1.1999999999999999E-3},150,{"$f":"X45*W45","v":0.18},null,{"$f":"Y45-R45","v":0},0,null,{"$f":"W45","v":1.1999999999999999E-3},150,{"$f":"AE45*AD45","v":0.18},null,{"$f":"AF45-Y45","v":0},0,null,{"$f":"AD45","v":1.1999999999999999E-3},150,{"$f":"AL45*AK45","v":0.18},null,{"$f":"AM45-AF45","v":0},0]
["Line Losses on Cost of Power",null,"per kWh",null,{"$f":"IF(ISBLANK(C16)=TRUE, 0, IF(C16=\"TOU\", 0.64*$E$56+0.18*$E$57+0.18*$E$58, IF(AND(C16=\"non-TOU\", F60>0), E60,E59)))","v":0.10766000000000001},{"$f":"$E$18*(1+$E$75)-$E$18","v":5.1599999999999966},0.55552559999999962,null,{"$f":"E46","v":0.10766000000000001},{"$f":"$E$18*(1+$I$75)-$E$18","v":5.8949999999999818},0.63465569999999805,null,7.9130099999998427E-2,0.14244186046511353,null,{"$f":"I46","v":0.10766000000000001},{"$f":"$E$18*(1+$I$75)-$E$18","v":5.8949999999999818},{"$f":"Q46*P46","v":0.63465569999999805},null,{"$f":"R46-K46","v":0},0,null,{"$f":"P46","v":0.10766000000000001},{"$f":"$E$18*(1+$I$75)-$E$18","v":5.8949999999999818},{"$f":"X46*W46","v":0.63465569999999805},null,{"$f":"Y46-R46","v":0},0,null,{"$f":"W46","v":0.10766000000000001},{"$f":"$E$18*(1+$I$75)-$E$18","v":5.8949999999999818},{"$f":"AE46*AD46","v":0.63465569999999805},null,{"$f":"AF46-Y46","v":0},0,null,{"$f":"AD46","v":0.10766000000000001},{"$f":"$E$18*(1+$I$75)-$E$18","v":5.8949999999999818},{"$f":"AL46*AK46","v":0.63465569999999805},null,{"$f":"AM46-AF46","v":0},0]
["Smart Meter Entity Charge",null,"Monthly",null,0,1,{"$f":"F47*E47","v":0},null,0,1,{"$f":"J47*I47","v":0},null,{"$f":"K47-G47","v":0},null,null,0,1,{"$f":"Q47*P47","v":0},null,{"$f":"R47-K47","v":0},"",null,0,1,{"$f":"X47*W47","v":0},null,{"$f":"Y47-R47","v":0},"",null,0,1,{"$f":"AE47*AD47","v":0},null,{"$f":"AF47-Y47","v":0},"",null,0,1,{"$f":"AL47*AK47","v":0},null,{"$f":"AM47-AF47","v":0},""]
["Sub-Total B - Distribution (includes Sub-Total A)",null,null,null,null,null,{"$f":"SUM(G40:G47)+G39","v":14.3105256},null,null,null,{"$f":"SUM(K40:K47)+K39","v":7.4946556999999983},null,{"$f":"K48-G48","v":-6.8158699000000018},{"$f":"IF((G48)=0,\"\",(M48/G48))","v":-0.47628368730216325},null,null,null,{"$f":"SUM(R40:R47)+R39","v":8.5346556999999983},null,{"$f":"R48-K48","v":1.04},0.1387655472952547,null,null,null,{"$f":"SUM(Y40:Y47)+Y39","v":8.7296556999999968},null,{"$f":"Y48-R48","v":0.19499999999999851},2.284802185986232E-2,null,null,null,{"$f":"SUM(AF40:AF47)+AF39","v":8.9996556999999964},null,{"$f":"AF48-Y48","v":0.26999999999999957},3.0929054853789901E-2,null,null,null,{"$f":"SUM(AM40:AM47)+AM39","v":9.1946556999999984},null,{"$f":"AM48-AF48","v":0.19500000000000206},2.1667495568747384E-2]
["RTSR - Network",null,"per kWh",null,6.7000000000000002E-3,{"$f":"$E$18*(1+$E$75)","v":155.16},{"$f":"F49*E49","v":1.0395719999999999},null,{"$f":"'Rates Summary'!G17","v":7.1000000000000004E-3},{"$f":"$E$18*(1+$I$75)","v":155.89499999999998},{"$f":"J49*I49","v":1.1068544999999999},null,6.7282499999999912E-2,6.4721346861977738E-2,null,{"$f":"I49","v":7.1000000000000004E-3},{"$f":"$E$18*(1+P75)","v":155.89499999999998},{"$f":"Q49*P49","v":1.1068544999999999},null,0,0,null,{"$f":"P49","v":7.1000000000000004E-3},{"$f":"$E$18*(1+W75)","v":155.89499999999998},{"$f":"X49*W49","v":1.1068544999999999},null,0,0,null,{"$f":"W49","v":7.1000000000000004E-3},{"$f":"$E$18*(1+AD75)","v":155.89499999999998},{"$f":"AE49*AD49","v":1.1068544999999999},null,0,0,null,{"$f":"AD49","v":7.1000000000000004E-3},{"$f":"$E$18*(1+AK75)","v":155.89499999999998},{"$f":"AL49*AK49","v":1.1068544999999999},null,0,0]
["RTSR - Line and Transformation Connection",null,"per kWh",null,5.1000000000000004E-3,{"$f":"F49","v":155.16},{"$f":"F50*E50","v":0.79131600000000002},null,{"$f":"'Rates Summary'!G18","v":5.5999999999999999E-3},{"$f":"J49","v":155.89499999999998},{"$f":"J50*I50","v":0.8730119999999999},null,8.169599999999988E-2,0.10324067755485783,null,{"$f":"I50","v":5.5999999999999999E-3},{"$f":"Q49","v":155.89499999999998},{"$f":"Q50*P50","v":0.8730119999999999},null,0,0,null,{"$f":"P50","v":5.5999999999999999E-3},{"$f":"X49","v":155.89499999999998},{"$f":"X50*W50","v":0.8730119999999999},null,0,0,null,{"$f":"W50","v":5.5999999999999999E-3},{"$f":"AE49","v":155.89499999999998},{"$f":"AE50*AD50","v":0.8730119999999999},null,0,0,null,{"$f":"AD50","v":5.5999999999999999E-3},{"$f":"AL49","v":155.89499999999998},{"$f":"AL50*AK50","v":0.8730119999999999},null,0,0]
["Sub-Total C - Delivery (including Sub-Total B)",null,null,null,null,null,{"$f":"SUM(G48:G50)","v":16.1414136},null,null,null,{"$f":"SUM(K48:K50)","v":9.4745221999999973},null,-6.6668914000000026,-0.41303020697022486,null,null,null,{"$f":"SUM(R48:R50)","v":10.514522199999998},null,1.0400000000000009,0.10976806830427831,null,null,null,{"$f":"SUM(Y48:Y50)","v":10.709522199999995},null,0.19499999999999673,1.8545778523345241E-2,null,null,null,{"$f":"SUM(AF48:AF50)","v":10.979522199999995},null,0.26999999999999957,2.5211208768958871E-2,null,null,null,{"$f":"SUM(AM48:AM50)","v":11.174522199999998},null,0.19500000000000384,1.7760335691110851E-2]
["Wholesale Market Service Charge (WMSC)",null,"per kWh",null,4.4000000000000003E-3,{"$f":"F50","v":155.16},{"$f":"F52*E52","v":0.68270399999999998},null,{"$f":"E52","v":4.4000000000000003E-3},{"$f":"J50","v":155.89499999999998},{"$f":"J52*I52","v":0.68593799999999994},null,3.2339999999999591E-3,4.7370456303170326E-3,null,{"$f":"I52","v":4.4000000000000003E-3},{"$f":"Q50","v":155.89499999999998},{"$f":"Q52*P52","v":0.68593799999999994},null,0,0,null,{"$f":"P52","v":4.4000000000000003E-3},{"$f":"X50","v":155.89499999999998},{"$f":"X52*W52","v":0.68593799999999994},null,0,0,null,{"$f":"W52","v":4.4000000000000003E-3},{"$f":"AE50","v":155.89499999999998},{"$f":"AE52*AD52","v":0.68593799999999994},null,0,0,null,{"$f":"AD52","v":4.4000000000000003E-3},{"$f":"AL50","v":155.89499999999998},{"$f":"AL52*AK52","v":0.68593799999999994},null,0,0]
["Rural and Remote Rate Protection (RRRP)",null,"per kWh",null,1.2999999999999999E-3,{"$f":"F50","v":155.16},0.201708,null,{"$f":"E53","v":1.2999999999999999E-3},{"$f":"J50","v":155.89499999999998},0.20266349999999997,null,9.5549999999997026E-4,4.737045630316945E-3,null,{"$f":"I53","v":1.2999999999999999E-3},{"$f":"Q50","v":155.89499999999998},0.20266349999999997,null,0,0,null,{"$f":"P53","v":1.2999999999999999E-3},{"$f":"X50","v":155.89499999999998},0.20266349999999997,null,0,0,null,{"$f":"W53","v":1.2999999999999999E-3},{"$f":"AE50","v":155.89499999999998},0.20266349999999997,null,0,0,null,{"$f":"AD53","v":1.2999999999999999E-3},{"$f":"AL50","v":155.89499999999998},0.20266349999999997,null,0,0]
["Standard Supply Service Charge",null,"Monthly",null,0.25,1,0.25,null,{"$f":"E54","v":0.25},1,0.25,null,0,0,null,{"$f":"I54","v":0.25},1,0.25,null,0,0,null,{"$f":"P54","v":0.25},1,0.25,null,0,0,null,{"$f":"W54","v":0.25},1,0.25,null,0,0,null,{"$f":"AD54","v":0.25},1,0.25,null,0,0]
["Debt Retirement Charge (DRC)",null,"per kWh",null,7.0000000000000001E-3,{"$f":"E18","v":150},1.05,null,{"$f":"E55","v":7.0000000000000001E-3},{"$f":"E18","v":150},1.05,null,0,0,null,{"$f":"I55","v":7.0000000000000001E-3},{"$f":"J55","v":150},1.05,null,0,0,null,{"$f":"P55","v":7.0000000000000001E-3},{"$f":"Q55","v":150},1.05,null,0,0,null,{"$f":"W55","v":7.0000000000000001E-3},{"$f":"X55","v":150},1.05,null,0,0,null,{"$f":"AD55","v":7.0000000000000001E-3},{"$f":"AE55","v":150},1.05,null,0,0]
["TOU - Off Peak",null,"per kWh",null,8.3000000000000004E-2,{"$f":"0.64*$E$18","v":96},7.968,null,{"$f":"E56","v":8.3000000000000004E-2},{"$f":"F56","v":96},7.968,null,0,0,null,{"$f":"I56","v":8.3000000000000004E-2},{"$f":"J56","v":96},7.968,null,0,0,null,{"$f":"P56","v":8.3000000000000004E-2},{"$f":"Q56","v":96},7.968,null,0,0,null,{"$f":"W56","v":8.3000000000000004E-2},{"$f":"X56","v":96},7.968,null,0,0,null,{"$f":"AD56","v":8.3000000000000004E-2},{"$f":"AE56","v":96},7.968,null,0,0]
["TOU - Mid Peak",null,"per kWh",null,0.128,{"$f":"0.18*$E$18","v":27},3.456,null,{"$f":"E57","v":0.128},{"$f":"F57","v":27},3.456,null,0,0,null,{"$f":"I57","v":0.128},27,3.456,null,0,0,null,{"$f":"P57","v":0.128},27,3.456,null,0,0,null,{"$f":"W57","v":0.128},27,3.456,null,0,0,null,{"$f":"AD57","v":0.128},27,3.456,null,0,0]
["TOU - On Peak",null,"per kWh",null,0.17499999999999999,{"$f":"0.18*$E$18","v":27},4.7249999999999996,null,0.17499999999999999,{"$f":"F58","v":27},4.7249999999999996,null,0,0,null,0.17499999999999999,27,4.7249999999999996,null,0,0,null,0.17499999999999999,27,4.7249999999999996,null,0,0,null,0.17499999999999999,27,4.7249999999999996,null,0,0,null,0.17499999999999999,27,4.7249999999999996,null,0,0]
["Energy - RPP - Tier 1",null,"per kWh",null,9.9000000000000005E-2,{"$f":"IF(AND($S$1=1, E18>=600), 600, IF(AND($S$1=1, AND(E18<600, E18>=0)), E18, IF(AND($S$1=2, E18>=1000), 1000, IF(AND($S$1=2, AND(E18<1000, E18>=0)), E18))))","v":150},{"$f":"F59*E59","v":14.850000000000001},null,9.9000000000000005E-2,{"$f":"F59","v":150},{"$f":"J59*I59","v":14.850000000000001},null,0,0,null,9.9000000000000005E-2,150,{"$f":"Q59*P59","v":14.850000000000001},null,0,0,null,9.9000000000000005E-2,150,{"$f":"X59*W59","v":14.850000000000001},null,0,0,null,9.9000000000000005E-2,150,{"$f":"AE59*AD59","v":14.850000000000001},null,0,0,null,9.9000000000000005E-2,150,{"$f":"AL59*AK59","v":14.850000000000001},null,0,0]
["Energy - RPP - Tier 2",null,"per kWh",null,0.11600000000000001,{"$f":"IF(AND($S$1=1, E18>=600), E18-600, IF(AND($S$1=1, AND(E18<600, E18>=0)), 0, IF(AND($S$1=2, E18>=1000), E18-1000, IF(AND($S$1=2, AND(E18<1000, E18>=0)), 0))))","v":0},{"$f":"F60*E60","v":0},null,0.11600000000000001,{"$f":"F60","v":0},{"$f":"J60*I60","v":0},null,0,"",null,0.11600000000000001,0,{"$f":"Q60*P60","v":0},null,0,"",null,0.11600000000000001,0,{"$f":"X60*W60","v":0},null,0,"",null,0.11600000000000001,0,{"$f":"AE60*AD60","v":0},null,0,"",null,0.11600000000000001,0,{"$f":"AL60*AK60","v":0},null,0,""]
[null,null,null,null,null,null,null,null,null,null,null,null,null,null,null,null,null,null,null,null,"",null,null,null,null,null,null,"",null,null,null,null,null,null,"",null,null,null,null,null,null,""]
["Total Bill on TOU (before Taxes)",null,null,null,null,null,{"$f":"SUM(G52:G58,G51)","v":34.474825600000003},null,null,null,{"$f":"SUM(K52:K58,K51)","v":27.812123699999994},null,{"$f":"K62-G62","v":-6.6627019000000089},{"$f":"IF((G62)=0,\"\",(M62/G62))","v":-0.19326281667977482},null,null,null,{"$f":"SUM(R52:R58,R51)","v":28.852123699999996},null,{"$f":"R62-K62","v":1.0400000000000027},3.7393764360396646E-2,null,null,null,{"$f":"SUM(Y52:Y58,Y51)","v":29.047123699999993},null,{"$f":"Y62-R62","v":0.19499999999999673},6.7586012741237744E-3,null,null,null,{"$f":"SUM(AF52:AF58,AF51)","v":29.317123699999993},null,{"$f":"AF62-Y62","v":0.26999999999999957},9.2952404784918397E-3,null,null,null,{"$f":"SUM(AM52:AM58,AM51)","v":29.512123699999997},null,{"$f":"AM62-AF62","v":0.19500000000000384},6.6514028454982398E-3]
["HST",null,null,null,0.13,null,{"$f":"G62*E63","v":4.4817273280000007},null,0.13,null,{"$f":"K62*I63","v":3.6155760809999995},null,-0.86615124700000123,-0.19326281667977482,null,0.13,null,{"$f":"R62*P63","v":3.7507760809999997},null,{"$f":"R63-K63","v":0.13520000000000021},3.7393764360396604E-2,null,0.13,null,{"$f":"Y62*W63","v":3.7761260809999992},null,{"$f":"Y63-R63","v":2.534999999999954E-2},6.7586012741237649E-3,null,0.13,null,{"$f":"AF62*AD63","v":3.8112260809999992},null,{"$f":"AF63-Y63","v":3.5099999999999909E-2},9.2952404784918292E-3,null,0.13,null,{"$f":"AM62*AK63","v":3.8365760809999996},null,{"$f":"AM63-AF63","v":2.5350000000000428E-2},6.6514028454982208E-3]
["Total Bill (including HST)",null,null,null,null,null,{"$f":"G62+G63","v":38.956552928000001},null,null,null,{"$f":"K62+K63","v":31.427699780999994},null,-7.5288531470000066,-0.19326281667977477,null,null,null,{"$f":"R62+R63","v":32.602899780999998},null,1.1752000000000038,3.7393764360396667E-2,null,null,null,{"$f":"Y62+Y63","v":32.823249780999994},null,0.22034999999999627,6.7586012741237735E-3,null,null,null,{"$f":"AF62+AF63","v":33.12834978099999},null,0.30509999999999593,9.2952404784917286E-3,null,null,null,{"$f":"AM62+AM63","v":33.348699780999993},null,0.22035000000000338,6.6514028454982112E-3]
["Ontario Clean Energy Benefit 1",null,null,null,null,null,{"$f":"ROUND(-G64*10%,2)","v":-3.9},null,null,null,null,null,3.9,-1,null,null,null,null,null,0,"",null,null,null,null,null,0,"",null,null,null,null,null,0,"",null,null,null,null,null,0,""]
["Total Bill on TOU (including OCEB)",null,null,null,null,null,{"$f":"G64+G65","v":35.056552928000002},null,null,null,{"$f":"K64+K65","v":31.427699780999994},null,-3.6288531470000081,-0.10351426035677365,null,null,null,{"$f":"R64+R65","v":32.602899780999998},null,1.1752000000000038,3.7393764360396667E-2,null,null,null,{"$f":"Y64+Y65","v":32.823249780999994},null,0.22034999999999627,6.7586012741237735E-3,null,null,null,{"$f":"AF64+AF65","v":33.12834978099999},null,0.30509999999999593,9.2952404784917286E-3,null,null,null,{"$f":"AM64+AM65","v":33.348699780999993},null,0.22035000000000338,6.6514028454982112E-3]
[null,null,null,null,null,null,null,null,null,null,null,null,null,null,null,null,null,null,null,null,"",null,null,null,null,null,null,"",null,null,null,null,null,null,"",null,null,null,null,null,null,""]
["Total Bill on RPP (before Taxes)",null,null,null,null,null,{"$f":"SUM(G59:G60,G51,G52:G55)","v":33.175825599999996},null,null,null,{"$f":"SUM(K59:K60,K51,K52:K55)","v":26.513123699999998},null,{"$f":"SUM(M60:M61,M51,M52:M55)","v":-6.6627019000000027},{"$f":"IF((G68)=0,\"\",(M68/G68))","v":-0.20083002546287812},null,null,null,{"$f":"SUM(R59:R60,R51,R52:R55)","v":27.5531237},null,{"$f":"R68-K68","v":1.0400000000000027},3.922585704226178E-2,null,null,null,{"$f":"SUM(Y59:Y60,Y51,Y52:Y55)","v":27.748123699999997},null,{"$f":"Y68-R68","v":0.19499999999999673},7.0772374894102017E-3,null,null,null,{"$f":"SUM(AF59:AF60,AF51,AF52:AF55)","v":28.018123699999997},null,{"$f":"AF68-Y68","v":0.26999999999999957},9.730387644192302E-3,null,null,null,{"$f":"SUM(AM59:AM60,AM51,AM52:AM55)","v":28.213123700000001},null,{"$f":"AM68-AF68","v":0.19500000000000384},6.9597808221541924E-3]
["HST",null,null,null,0.13,null,{"$f":"G68*E69","v":4.3128573279999998},null,0.13,null,{"$f":"K68*I69","v":3.4467060809999999},null,{"$f":"K69-G69","v":-0.8661512469999999},{"$f":"IF((G69)=0,\"\",(M69/G69))","v":-0.20083002546287798},null,0.13,null,{"$f":"R68*P69","v":3.5819060810000001},null,{"$f":"R69-K69","v":0.13520000000000021},3.9225857042261739E-2,null,0.13,null,{"$f":"Y68*W69","v":3.6072560809999996},null,{"$f":"Y69-R69","v":2.534999999999954E-2},7.0772374894101922E-3,null,0.13,null,{"$f":"AF68*AD69","v":3.6423560809999995},null,{"$f":"AF69-Y69","v":3.5099999999999909E-2},9.7303876441922933E-3,null,0.13,null,{"$f":"AM68*AK69","v":3.6677060810000004},null,{"$f":"AM69-AF69","v":2.5350000000000872E-2},6.9597808221542948E-3]
["Total Bill (including HST)",null,null,null,null,null,{"$f":"G68+G69","v":37.488682927999996},null,null,null,{"$f":"K68+K69","v":29.959829780999996},null,-7.5288531469999995,-0.20083002546287801,null,null,null,{"$f":"R68+R69","v":31.135029781},null,1.1752000000000038,3.9225857042261808E-2,null,null,null,{"$f":"Y68+Y69","v":31.355379780999996},null,0.22034999999999627,7.0772374894102008E-3,null,null,null,{"$f":"AF68+AF69","v":31.660479780999996},null,0.30509999999999948,9.730387644192302E-3,null,null,null,{"$f":"AM68+AM69","v":31.880829781000003},null,0.22035000000000693,6.959780822154274E-3]
["Ontario Clean Energy Benefit 1",null,null,null,null,null,{"$f":"ROUND(-G70*10%,2)","v":-3.75},null,null,null,null,null,3.75,-1,null,null,null,null,null,0,"",null,null,null,null,null,0,"",null,null,null,null,null,0,"",null,null,null,null,null,0,""]
["Total Bill on RPP (including OCEB)",null,null,null,null,null,{"$f":"SUM(G70:G71)","v":33.738682927999996},null,null,null,{"$f":"SUM(K70:K71)","v":29.959829780999996},null,-3.7788531469999995,-0.11200357628257919,null,null,null,{"$f":"SUM(R70:R71)","v":31.135029781},null,1.1752000000000038,3.9225857042261808E-2,null,null,null,{"$f":"SUM(Y70:Y71)","v":31.355379780999996},null,0.22034999999999627,7.0772374894102008E-3,null,null,null,{"$f":"SUM(AF70:AF71)","v":31.660479780999996},null,0.30509999999999948,9.730387644192302E-3,null,null,null,{"$f":"SUM(AM70:AM71)","v":31.880829781000003},null,0.22035000000000693,6.959780822154274E-3]
[]
[]
["Loss Factor (%)",null,null,null,3.44E-2,null,null,null,3.9300000000000002E-2,null,null,null,null,null,null,3.9300000000000002E-2,null,null,null,null,null,null,3.9300000000000002E-2,null,null,null,null,null,null,3.9300000000000002E-2,null,null,null,null,null,null,3.9300000000000002E-2]
[]
["Distribution Excluding Rate Riders",null,null,null,"2015 Current Board-Approved",null,null,null,"2016 Test Year 1\nProposed",null,null,null,"Impact\n2016 TEST vs. \n2015 Bridge",null,null,"2017 Test Year 2\nProposed",null,null,null,"Impact\n2017 TEST 2 vs. \n2016 Test 1",null,null,"2018 Test Year 3\nProposed",null,null,null,"Impact\n2018 TEST 3 vs. \n2017 Test 2",null,null,"2019 Test Year 4\nProposed",null,null,null,"Impact\n2019 TEST 4 vs. \n2018 Test 3",null,null,"2020 Test Year 5 \nProposed",null,null,null,"Impact\n2019 TEST 5 vs. \n2019 Test 4"]
[null,null,"Charge Unit",null,"Rate","Volume","Charge",null,"Rate","Volume","Charge",null,"$ Change","% Change",null,"Rate","Volume","Charge",null,"$ Change","% Change",null,"Rate","Volume","Charge",null,"$ Change","% Change",null,"Rate","Volume","Charge",null,"$ Change","% Change",null,"Rate","Volume","Charge",null,"$ Change","% Change"]
[null,null,null,null,"($)",null,"($)",null,"($)",null,"($)",null,null,null,null,"($)",null,"($)",null,null,null,null,"($)",null,"($)",null,null,null,null,"($)",null,"($)",null,null,null,null,"($)",null,"($)"]
["Monthly Service Charge",null,"Monthly",null,{"$f":"'Rates Summary'!$D$32","v":11.55},1,{"$f":"F80*E80","v":11.55},null,{"$f":"'Rates Summary'!$E$32","v":5.78},1,{"$f":"J80*I80","v":5.78},null,{"$f":"K80-G80","v":-5.7700000000000005},{"$f":"IF((G80)=0,\"\",(M80/G80))","v":-0.4995670995670996},null,{"$f":"'Rates Summary'!$F$32","v":5.95},1,{"$f":"Q80*P80","v":5.95},null,{"$f":"R80-K80","v":0.16999999999999993},{"$f":"IF((K80)=0,\"\",(T80/K80))","v":2.9411764705882339E-2},null,{"$f":"'Rates Summary'!$G$32","v":6.1},1,{"$f":"X80*W80","v":6.1},null,{"$f":"Y80-R80","v":0.14999999999999947},{"$f":"IF((R80)=0,\"\",(AA80/R80))","v":2.5210084033613356E-2},null,{"$f":"'Rates Summary'!$H$32","v":6.31},1,{"$f":"AE80*AD80","v":6.31},null,{"$f":"AF80-Y80","v":0.20999999999999996},{"$f":"IF((Y80)=0,\"\",(AH80/Y80))","v":3.4426229508196717E-2},null,{"$f":"'Rates Summary'!$I$32","v":6.46},1,{"$f":"AL80*AK80","v":6.46},null,{"$f":"AM80-AF80","v":0.15000000000000036},{"$f":"IF((AF80)=0,\"\",(AO80/AF80))","v":2.3771790808240944E-2}]
["Distribution Volumetric Rate",null,"per kWh",null,{"$f":"'Rates Summary'!$D$44","v":1.41E-2},{"$f":"$E$18","v":150},{"$f":"F81*E81","v":2.1149999999999998},null,{"$f":"'Rates Summary'!$E$44","v":1.15E-2},{"$f":"$E$18","v":150},{"$f":"J81*I81","v":1.7249999999999999},null,{"$f":"K81-G81","v":-0.3899999999999999},{"$f":"IF((G81)=0,\"\",(M81/G81))","v":-0.18439716312056734},null,{"$f":"'Rates Summary'!$F$44","v":1.18E-2},{"$f":"$E$18","v":150},{"$f":"Q81*P81","v":1.77},null,4.5000000000000151E-2,{"$f":"IF((K81)=0,\"\",(T81/K81))","v":2.6086956521739219E-2},null,{"$f":"'Rates Summary'!$G$44","v":1.21E-2},{"$f":"$E$18","v":150},{"$f":"X81*W81","v":1.8149999999999999},null,4.4999999999999929E-2,{"$f":"IF((R81)=0,\"\",(AA81/R81))","v":2.5423728813559282E-2},null,{"$f":"'Rates Summary'!$H$44","v":1.2500000000000001E-2},{"$f":"$E$18","v":150},{"$f":"AE81*AD81","v":1.875},null,6.0000000000000053E-2,{"$f":"IF((Y81)=0,\"\",(AH81/Y81))","v":3.305785123966945E-2},null,{"$f":"'Rates Summary'!$I$44","v":1.2800000000000001E-2},{"$f":"$E$18","v":150},{"$f":"AL81*AK81","v":1.9200000000000002},null,4.5000000000000151E-2,{"$f":"IF((AF81)=0,\"\",(AO81/AF81))","v":2.400000000000008E-2}]
["\"Regular\" Distribution Only",null,null,null,null,null,{"$f":"SUM(G80:G81)","v":13.665000000000001},null,null,null,{"$f":"SUM(K80:K81)","v":7.5049999999999999},null,-6.160000000000001,-0.45078668130259791,null,null,null,{"$f":"SUM(R80:R81)","v":7.7200000000000006},null,0.21500000000000075,2.8647568287808227E-2,null,null,null,{"$f":"SUM(Y80:Y81)","v":7.9149999999999991},null,0.19499999999999851,2.5259067357512759E-2,null,null,null,{"$f":"SUM(AF80:AF81)","v":8.1849999999999987},null,0.26999999999999957,3.4112444725205256E-2,null,null,null,{"$f":"SUM(AM80:AM81)","v":8.3800000000000008},null,0.19500000000000206,2.3824068417837765E-2]
[]
[]
[null,"Residential (kWh) - 100, 250, 500, 800, 1000, 1500, 2000"]
[null,"GS<50kW (kWh) - 1000, 2000, 5000, 10000, 15000"]
[null,"GS>50kW (kW) - 60, 100, 500, 1000"]
[null,"Large User - range appropriate for utility"]
[null,"Lighting Classes and USL - 150 kWh and 1 kW, range appropriate for utility."]
[]
[null,null,"Note that cells with the highlighted color shown to the left indicate quantities that are loss adjusted."]

{"sheet":"Bill Impact St Light 375kW","index":23,"n_rows":91,"n_cols":42,"rows_kept":91,"cut":false,"hidden":false,"merged":[[76,40,76,41],[76,22,76,24],[76,26,76,27],[76,29,76,31],[76,33,76,34],[76,36,76,38],[76,4,76,6],[76,8,76,10],[76,12,76,13],[76,15,76,17],[76,19,76,20],[19,40,19,41],[2,0,2,9],[9,0,9,13],[10,0,10,13],[13,2,13,13],[13,15,13,26],[19,4,19,6],[19,8,19,10],[19,12,19,13],[19,15,19,17],[19,19,19,20],[19,22,19,24],[19,26,19,27],[19,29,19,31],[19,33,19,34],[19,36,19,38],[20,34,21,34],[20,40,21,40],[20,41,21,41],[64,0,64,2],[20,2,21,2],[20,12,21,12],[20,13,21,13],[20,19,21,19],[20,20,21,20],[20,26,21,26],[65,0,65,2],[70,0,70,2],[71,0,71,2],[20,27,21,27],[20,33,21,33],[77,2,78,2],[77,12,78,12],[77,13,78,13],[77,19,78,19],[77,20,78,20],[77,41,78,41],[77,26,78,26],[77,27,78,27],[77,33,78,33],[77,34,78,34],[77,40,78,40]]}
[null,null,null,null,null,null,null,null,null,null,null,null,"File Number:",{"$f":"EBNUMBER","v":"EB-2015-0083"},null,null,null,null,1]
[null,null,null,null,null,null,null,null,null,null,null,null,"Exhibit:",{"$f":"'Bill Impact Resi 204kWh'!$N$2","v":8}]
[null,null,null,null,null,null,null,null,null,null,null,null,"Tab:",{"$f":"'Bill Impact Resi 204kWh'!$N$3","v":4}]
[null,null,null,null,null,null,null,null,null,null,null,null,"Schedule:",{"$f":"'Bill Impact Resi 204kWh'!$N$4","v":3}]
[null,null,null,null,null,null,null,null,null,null,null,null,"Page:"]
[]
[null,null,null,null,null,null,null,null,null,null,null,null,"Date:",{"$f":"'Bill Impact Resi 204kWh'!$N$7","v":"Settlement"}]
[]
[]
["Appendix 2-W"]
["Bill Impacts"]
[]
[]
["Customer Class:",null,"Street Lighting",null,null,null,null,null,null,null,null,null,null,null,null,{"$f":"C14","v":"Street Lighting"},null,null,null,null,null,null,null,null,null,null,null,null,null,null,null,null,null,null,null,null,{"$f":"P14","v":"Street Lighting"}]
[]
["TOU / non-TOU:",null,"TOU"]
[null,null,"Lights",null,5000,"number of"]
[null,null,"Consumption",null,150000," kWh"]
[null,null,"Load",null,375,"kW"]
[null,null,null,null,"2015 Current Board-Approved",null,null,null,"2016 Test Year 1\nProposed",null,null,null,"Impact\n2016 TEST vs. \n2015 Bridge",null,null,"2017 Test Year 2\nProposed",null,null,null,"Impact\n2017 TEST 2 vs. \n2016 Test 1",null,null,"2018 Test Year 3\nProposed",null,null,null,"Impact\n2018 TEST 3 vs. \n2017 Test 2",null,null,"2019 Test Year 4\nProposed",null,null,null,"Impact\n2019 TEST 4 vs. \n2018 Test 3",null,null,"2020 Test Year 5 \nProposed",null,null,null,"Impact\n2019 TEST 5 vs. \n2019 Test 4"]
[null,null,"Charge Unit",null,"Rate","Volume","Charge",null,"Rate","Volume","Charge",null,"$ Change","% Change",null,"Rate","Volume","Charge",null,"$ Change","% Change",null,"Rate","Volume","Charge",null,"$ Change","% Change",null,"Rate","Volume","Charge",null,"$ Change","% Change",null,"Rate","Volume","Charge",null,"$ Change","% Change"]
[null,null,null,null,"($)",null,"($)",null,"($)",null,"($)",null,null,null,null,"($)",null,"($)",null,null,null,null,"($)",null,"($)",null,null,null,null,"($)",null,"($)",null,null,null,null,"($)",null,"($)"]
["Monthly Service Charge (per light)",null,"Monthly",null,{"$f":"'Rates Summary'!$D$33","v":1.02},{"$f":"$E$17","v":5000},{"$f":"F23*E23","v":5100},null,{"$f":"'Rates Summary'!$E$33","v":0.88},{"$f":"$E$17","v":5000},{"$f":"J23*I23","v":4400},null,{"$f":"K23-G23","v":-700},{"$f":"IF((G23)=0,\"\",(M23/G23))","v":-0.13725490196078433},null,{"$f":"'Rates Summary'!$F$33","v":1.05},{"$f":"$E$17","v":5000},{"$f":"Q23*P23","v":5250},null,{"$f":"R23-K23","v":850},{"$f":"IF((K23)=0,\"\",(T23/K23))","v":0.19318181818181818},null,{"$f":"'Rates Summary'!$G$33","v":1.24},{"$f":"$E$17","v":5000},{"$f":"X23*W23","v":6200},null,{"$f":"Y23-R23","v":950},{"$f":"IF((R23)=0,\"\",(AA23/R23))","v":0.18095238095238095},null,{"$f":"'Rates Summary'!$H$33","v":1.28},{"$f":"$E$17","v":5000},{"$f":"AE23*AD23","v":6400},null,{"$f":"AF23-Y23","v":200},{"$f":"IF((Y23)=0,\"\",(AH23/Y23))","v":3.2258064516129031E-2},null,{"$f":"'Rates Summary'!$I$33","v":1.31},{"$f":"$E$17","v":5000},{"$f":"AL23*AK23","v":6550},null,{"$f":"AM23-AF23","v":150},{"$f":"IF((AF23)=0,\"\",(AO23/AF23))","v":2.34375E-2}]
["Smart Meter (SMIRR) Rate Rider",null,null,null,0,1,{"$f":"F24*E24","v":0},null,0,1,{"$f":"J24*I24","v":0},null,{"$f":"K24-G24","v":0},{"$f":"IF((G24)=0,\"\",(M24/G24))","v":""},null,0,1,{"$f":"Q24*P24","v":0},null,0,{"$f":"IF((K24)=0,\"\",(T24/K24))","v":""},null,0,1,{"$f":"X24*W24","v":0},null,0,{"$f":"IF((R24)=0,\"\",(AA24/R24))","v":""},null,0,1,{"$f":"AE24*AD24","v":0},null,0,{"$f":"IF((Y24)=0,\"\",(AH24/Y24))","v":""},null,0,1,{"$f":"AL24*AK24","v":0},null,0,{"$f":"IF((AF24)=0,\"\",(AO24/AF24))","v":""}]
["Rate Rider Smart Meters Capital (2016)",null,null,null,0,1,0,null,0,1,{"$f":"J25*I25","v":0},null,{"$f":"K25-G25","v":0},{"$f":"IF((G25)=0,\"\",(M25/G25))","v":""},null,0,1,{"$f":"Q25*P25","v":0},null,0,"",null,0,1,{"$f":"X25*W25","v":0},null,0,"",null,0,1,{"$f":"AE25*AD25","v":0},null,0,"",null,0,1,{"$f":"AL25*AK25","v":0},null,0,""]
["Rate Rider Recovery of Stranded Meters",null,null,null,0,1,0,null,0,1,0,null,0,"",null,0,1,0,null,0,"",null,0,1,0,null,0,"",null,0,1,0,null,0,"",null,0,1,0,null,0,""]
[null,null,null,null,null,1,0,null,null,1,0,null,0,"",null,null,1,0,null,0,"",null,null,1,0,null,0,"",null,null,1,0,null,0,"",null,null,1,0,null,0,""]
[null,null,null,null,null,1,0,null,null,1,0,null,0,"",null,null,1,0,null,0,"",null,null,1,0,null,0,"",null,null,1,0,null,0,"",null,null,1,0,null,0,""]
["Distribution Volumetric Rate",null,"per kW",null,{"$f":"'Rates Summary'!$D$45","v":4.6749999999999998},{"$f":"$E$19","v":375},1753.125,null,{"$f":"'Rates Summary'!$E$45","v":9.952},{"$f":"$E$19","v":375},3732,null,1978.875,1.1287700534759357,null,{"$f":"'Rates Summary'!$F$45","v":11.891},{"$f":"$E$19","v":375},4459.125,null,727.125,0.19483520900321544,null,{"$f":"'Rates Summary'!$G$45","v":14.041700000000001},{"$f":"$E$19","v":375},5265.6374999999998,null,806.51249999999982,0.18086788327306363,null,{"$f":"'Rates Summary'!$H$45","v":14.518800000000001},{"$f":"$E$19","v":375},5444.55,null,178.91250000000036,3.3977367412777723E-2,null,{"$f":"'Rates Summary'!$I$45","v":14.8695},{"$f":"$E$19","v":375},5576.0625,null,131.51249999999982,2.4154888833787882E-2]
["Rate Rider Tax Change (2015)",null,null,null,-2.7799999999999998E-2,{"$f":"$E$19","v":375},-10.424999999999999,null,0,{"$f":"$E$19","v":375},0,null,10.424999999999999,-1,null,0,{"$f":"$E$19","v":375},0,null,0,"",null,0,{"$f":"$E$19","v":375},0,null,0,"",null,0,{"$f":"$E$19","v":375},0,null,0,"",null,0,{"$f":"$E$19","v":375},0,null,0,""]
["LRAM VA (2016)",null,"per kW",null,0,375,0,null,{"$f":"'Rates Summary'!H7","v":7.0278999999999998},375,2635.4625000000001,null,2635.4625000000001,"",null,0,375,0,null,-2635.4625000000001,-1,null,0,375,0,null,0,"",null,0,375,0,null,0,"",null,0,375,0,null,0,""]
["Rate Rider Incremental Capital 2012 True-Up (2016)",null,"per kW",null,0,375,0,null,{"$f":"'Rates Summary'!H9","v":0.246},375,92.25,null,92.25,"",null,0,375,0,null,-92.25,-1,null,0,375,0,null,0,"",null,0,375,0,null,0,"",null,0,375,0,null,0,""]
[null,null,null,null,null,375,{"$f":"F33*E33","v":0},null,null,375,{"$f":"J33*I33","v":0},null,{"$f":"K33-G33","v":0},{"$f":"IF((G33)=0,\"\",(M33/G33))","v":""},null,null,375,{"$f":"Q33*P33","v":0},null,{"$f":"R33-K33","v":0},{"$f":"IF((K33)=0,\"\",(T33/K33))","v":""},null,null,375,{"$f":"X33*W33","v":0},null,{"$f":"Y33-R33","v":0},{"$f":"IF((R33)=0,\"\",(AA33/R33))","v":""},null,null,375,{"$f":"AE33*AD33","v":0},null,{"$f":"AF33-Y33","v":0},{"$f":"IF((Y33)=0,\"\",(AH33/Y33))","v":""},null,null,375,{"$f":"AL33*AK33","v":0},null,{"$f":"AM33-AF33","v":0},{"$f":"IF((AF33)=0,\"\",(AO33/AF33))","v":""}]
[null,null,null,null,null,375,0,null,null,375,0,null,0,"",null,null,375,0,null,0,"",null,null,375,0,null,0,"",null,null,375,0,null,0,"",null,null,375,0,null,0,""]
[null,null,null,null,null,375,0,null,null,375,0,null,0,"",null,null,375,0,null,0,"",null,null,375,0,null,0,"",null,null,375,0,null,0,"",null,null,375,0,null,0,""]
[null,null,null,null,null,375,0,null,null,375,0,null,0,"",null,null,375,0,null,0,"",null,null,375,0,null,0,"",null,null,375,0,null,0,"",null,null,375,0,null,0,""]
[null,null,null,null,null,375,0,null,null,375,0,null,0,"",null,null,375,0,null,0,"",null,null,375,0,null,0,"",null,null,375,0,null,0,"",null,null,375,0,null,0,""]
[null,null,null,null,null,375,0,null,null,375,0,null,0,"",null,null,375,0,null,0,"",null,null,375,0,null,0,"",null,null,375,0,null,0,"",null,null,375,0,null,0,""]
["Sub-Total A (excluding pass through)",null,null,null,null,null,{"$f":"SUM(G23:G38)","v":6842.7},null,null,null,{"$f":"SUM(K23:K38)","v":10859.7125},null,4017.0124999999998,0.58705079866134713,null,null,null,{"$f":"SUM(R23:R38)","v":9709.125},null,-1150.5874999999996,-0.10595008845768243,null,null,null,{"$f":"SUM(Y23:Y38)","v":11465.637500000001},null,1756.5125000000007,0.18091357357125393,null,null,null,{"$f":"SUM(AF23:AF38)","v":11844.55},null,378.91249999999854,3.3047660891075484E-2,null,null,null,{"$f":"SUM(AM23:AM38)","v":12126.0625},null,281.51250000000073,2.3767260047870182E-2]
["Deferral/Variance Account Disposition Rate Rider (2016)",null,"per kW",null,0,375,{"$f":"F40*E40","v":0},null,{"$f":"'Rates Summary'!H5","v":14.8985},375,{"$f":"J40*I40","v":5586.9375},null,{"$f":"K40-G40","v":5586.9375},{"$f":"IF((G40)=0,\"\",(M40/G40))","v":""},null,0,375,{"$f":"Q40*P40","v":0},null,-5586.9375,-1,null,0,375,{"$f":"X40*W40","v":0},null,0,"",null,0,375,{"$f":"AE40*AD40","v":0},null,0,"",null,0,375,{"$f":"AL40*AK40","v":0},null,0,""]
[null,null,null,null,null,375,{"$f":"F41*E41","v":0},null,null,375,{"$f":"J41*I41","v":0},null,{"$f":"K41-G41","v":0},{"$f":"IF((G41)=0,\"\",(M41/G41))","v":""},null,null,375,{"$f":"Q41*P41","v":0},null,0,"",null,null,375,{"$f":"X41*W41","v":0},null,0,"",null,null,375,{"$f":"AE41*AD41","v":0},null,0,"",null,null,375,{"$f":"AL41*AK41","v":0},null,0,""]
["Rate Rider CGAAP Account 1576 (2016)",null,"per kW",null,0,375,0,null,{"$f":"'Rates Summary'!$H$8","v":-6.6951999999999998},375,-2510.6999999999998,null,-2510.6999999999998,"",null,null,375,0,null,2510.6999999999998,-1,null,null,375,0,null,0,"",null,null,375,0,null,0,"",null,null,375,0,null,0,""]
["Disposition of Global Adjustment (2015)  \nApplicable to Non-RPP Customers",null,"per kW",null,5.5544000000000002,375,2082.9,null,0,375,0,null,-2082.9,-1,null,0,375,0,null,0,"",null,0,375,0,null,0,"",null,0,375,0,null,0,"",null,0,375,0,null,0,""]
["Disposition of Global Adjustment (2016) \nApplicable to Non-RPP Customers",null,"per kW",null,0,375,0,null,{"$f":"'Rates Summary'!H6","v":7.84},375,2940,null,2940,"",null,0,375,0,null,-2940,-1,null,0,375,0,null,0,"",null,0,375,0,null,0,"",null,0,375,0,null,0,""]
["Low Voltage Service Charge",null,"per kW",null,0.182,375,{"$f":"F45*E45","v":68.25},null,{"$f":"'Rates Summary'!H15","v":0.33679999999999999},375,{"$f":"J45*I45","v":126.3},null,{"$f":"K45-G45","v":58.05},{"$f":"IF((G45)=0,\"\",(M45/G45))","v":0.85054945054945053},null,{"$f":"I45","v":0.33679999999999999},375,{"$f":"Q45*P45","v":126.3},null,{"$f":"R45-K45","v":0},0,null,{"$f":"P45","v":0.33679999999999999},375,{"$f":"X45*W45","v":126.3},null,{"$f":"Y45-R45","v":0},0,null,{"$f":"W45","v":0.33679999999999999},375,{"$f":"AE45*AD45","v":126.3},null,{"$f":"AF45-Y45","v":0},0,null,{"$f":"AD45","v":0.33679999999999999},375,{"$f":"AL45*AK45","v":126.3},null,{"$f":"AM45-AF45","v":0},0]
["Line Losses on Cost of Power",null,"per kWh",null,{"$f":"IF(ISBLANK(C16)=TRUE, 0, IF(C16=\"TOU\", 0.64*$E$56+0.18*$E$57+0.18*$E$58, IF(AND(C16=\"non-TOU\", F60>0), E60,E59)))","v":0.10766000000000001},{"$f":"$E$18*(1+$E$75)-$E$18","v":5160},555.52560000000005,null,{"$f":"E46","v":0.10766000000000001},{"$f":"$E$18*(1+$I$75)-$E$18","v":5894.9999999999709},634.65569999999695,null,79.130099999996901,0.14244186046511068,null,{"$f":"I46","v":0.10766000000000001},{"$f":"$E$18*(1+$I$75)-$E$18","v":5894.9999999999709},{"$f":"Q46*P46","v":634.65569999999695},null,{"$f":"R46-K46","v":0},0,null,{"$f":"P46","v":0.10766000000000001},{"$f":"$E$18*(1+$I$75)-$E$18","v":5894.9999999999709},{"$f":"X46*W46","v":634.65569999999695},null,{"$f":"Y46-R46","v":0},0,null,{"$f":"W46","v":0.10766000000000001},{"$f":"$E$18*(1+$I$75)-$E$18","v":5894.9999999999709},{"$f":"AE46*AD46","v":634.65569999999695},null,{"$f":"AF46-Y46","v":0},0,null,{"$f":"AD46","v":0.10766000000000001},{"$f":"$E$18*(1+$I$75)-$E$18","v":5894.9999999999709},{"$f":"AL46*AK46","v":634.65569999999695},null,{"$f":"AM46-AF46","v":0},0]
["Smart Meter Entity Charge",null,null,null,null,1,{"$f":"F47*E47","v":0},null,{"$f":"E47","v":0},1,{"$f":"J47*I47","v":0},null,{"$f":"I47","v":0},null,null,{"$f":"M47","v":0},1,{"$f":"Q47*P47","v":0},null,{"$f":"R47-K47","v":0},"",null,{"$f":"P47","v":0},1,{"$f":"X47*W47","v":0},null,{"$f":"Y47-R47","v":0},"",null,{"$f":"W47","v":0},1,{"$f":"AE47*AD47","v":0},null,{"$f":"AF47-Y47","v":0},"",null,{"$f":"AD47","v":0},1,{"$f":"AL47*AK47","v":0},null,{"$f":"AM47-AF47","v":0},""]
["Sub-Total B - Distribution (includes Sub-Total A)",null,null,null,null,null,{"$f":"SUM(G40:G47)+G39","v":9549.3755999999994},null,null,null,{"$f":"SUM(K40:K47)+K39","v":17636.905699999996},null,{"$f":"K48-G48","v":8087.5300999999963},{"$f":"IF((G48)=0,\"\",(M48/G48))","v":0.84691716388242144},null,null,null,{"$f":"SUM(R40:R47)+R39","v":10470.080699999997},null,{"$f":"R48-K48","v":-7166.8249999999989},-0.40635387646258159,null,null,null,{"$f":"SUM(Y40:Y47)+Y39","v":12226.593199999998},null,{"$f":"Y48-R48","v":1756.5125000000007},0.16776494377927778,null,null,null,{"$f":"SUM(AF40:AF47)+AF39","v":12605.505699999996},null,{"$f":"AF48-Y48","v":378.91249999999854},3.0990848701827965E-2,null,null,null,{"$f":"SUM(AM40:AM47)+AM39","v":12887.018199999997},null,{"$f":"AM48-AF48","v":281.51250000000073},2.2332503486948627E-2]
["RTSR - Network",null,"per kW",null,1.9006000000000001,{"$f":"$E$19","v":375},{"$f":"F49*E49","v":712.72500000000002},null,{"$f":"'Rates Summary'!H17","v":2.0078},{"$f":"$E$19","v":375},{"$f":"J49*I49","v":752.92499999999995},null,40.199999999999932,5.6403241081763554E-2,null,{"$f":"I49","v":2.0078},{"$f":"$E$19","v":375},{"$f":"Q49*P49","v":752.92499999999995},null,0,0,null,{"$f":"P49","v":2.0078},{"$f":"$E$19","v":375},{"$f":"X49*W49","v":752.92499999999995},null,0,0,null,{"$f":"W49","v":2.0078},{"$f":"$E$19","v":375},{"$f":"AE49*AD49","v":752.92499999999995},null,0,0,null,{"$f":"AD49","v":2.0078},{"$f":"$E$19","v":375},{"$f":"AL49*AK49","v":752.92499999999995},null,0,0]
["RTSR - Line and Transformation Connection",null,"per kW",null,1.4538,375,{"$f":"F50*E50","v":545.17499999999995},null,{"$f":"'Rates Summary'!H18","v":1.6052999999999999},375,{"$f":"J50*I50","v":601.98749999999995},null,56.8125,0.10420965744944284,null,{"$f":"I50","v":1.6052999999999999},375,{"$f":"Q50*P50","v":601.98749999999995},null,0,0,null,{"$f":"P50","v":1.6052999999999999},375,{"$f":"X50*W50","v":601.98749999999995},null,0,0,null,{"$f":"W50","v":1.6052999999999999},375,{"$f":"AE50*AD50","v":601.98749999999995},null,0,0,null,{"$f":"AD50","v":1.6052999999999999},375,{"$f":"AL50*AK50","v":601.98749999999995},null,0,0]
["Sub-Total C - Delivery (including Sub-Total B)",null,null,null,null,null,{"$f":"SUM(G48:G50)","v":10807.275599999999},null,null,null,{"$f":"SUM(K48:K50)","v":18991.818199999994},null,8184.5425999999952,0.75731783873449066,null,null,null,{"$f":"SUM(R48:R50)","v":11824.993199999995},null,-7166.8249999999989,-0.37736381659340024,null,null,null,{"$f":"SUM(Y48:Y50)","v":13581.505699999996},null,1756.5125000000007,0.14854236871781046,null,null,null,{"$f":"SUM(AF48:AF50)","v":13960.418199999995},null,378.91249999999854,2.789915259542973E-2,null,null,null,{"$f":"SUM(AM48:AM50)","v":14241.930699999995},null,281.51250000000073,2.0165047777723509E-2]
["Wholesale Market Service Charge (WMSC)",null,"per kWh",null,4.4000000000000003E-3,{"$f":"$E$18*(1+$E$75)","v":155160},{"$f":"F52*E52","v":682.70400000000006},null,{"$f":"E52","v":4.4000000000000003E-3},{"$f":"$E$18*(1+I75)","v":155894.99999999997},{"$f":"J52*I52","v":685.93799999999987},null,3.2339999999998099,4.7370456303168131E-3,null,{"$f":"I52","v":4.4000000000000003E-3},{"$f":"$E$18*(1+P75)","v":155894.99999999997},{"$f":"Q52*P52","v":685.93799999999987},null,0,0,null,{"$f":"P52","v":4.4000000000000003E-3},{"$f":"$E$18*(1+W75)","v":155894.99999999997},{"$f":"X52*W52","v":685.93799999999987},null,0,0,null,{"$f":"W52","v":4.4000000000000003E-3},{"$f":"$E$18*(1+AD75)","v":155894.99999999997},{"$f":"AE52*AD52","v":685.93799999999987},null,0,0,null,{"$f":"AD52","v":4.4000000000000003E-3},{"$f":"$E$18*(1+AK75)","v":155894.99999999997},{"$f":"AL52*AK52","v":685.93799999999987},null,0,0]
["Rural and Remote Rate Protection (RRRP)",null,"per kWh",null,1.2999999999999999E-3,{"$f":"$E$18*(1+$E$75)","v":155160},201.708,null,{"$f":"E53","v":1.2999999999999999E-3},{"$f":"$E$18*(1+I75)","v":155894.99999999997},202.66349999999994,null,0.95549999999994384,4.737045630316814E-3,null,{"$f":"I53","v":1.2999999999999999E-3},{"$f":"$E$18*(1+P75)","v":155894.99999999997},202.66349999999994,null,0,0,null,{"$f":"P53","v":1.2999999999999999E-3},{"$f":"$E$18*(1+W75)","v":155894.99999999997},202.66349999999994,null,0,0,null,{"$f":"W53","v":1.2999999999999999E-3},{"$f":"$E$18*(1+AD75)","v":155894.99999999997},202.66349999999994,null,0,0,null,{"$f":"AD53","v":1.2999999999999999E-3},{"$f":"$E$18*(1+AK75)","v":155894.99999999997},202.66349999999994,null,0,0]
["Standard Supply Service Charge",null,"Monthly",null,0.25,1,0.25,null,{"$f":"E54","v":0.25},1,0.25,null,0,0,null,{"$f":"I54","v":0.25},1,0.25,null,0,0,null,{"$f":"P54","v":0.25},1,0.25,null,0,0,null,{"$f":"W54","v":0.25},1,0.25,null,0,0,null,{"$f":"AD54","v":0.25},1,0.25,null,0,0]
["Debt Retirement Charge (DRC)",null,"per kWh",null,7.0000000000000001E-3,{"$f":"E18","v":150000},1050,null,{"$f":"E55","v":7.0000000000000001E-3},{"$f":"E18","v":150000},1050,null,0,0,null,{"$f":"I55","v":7.0000000000000001E-3},{"$f":"J55","v":150000},1050,null,0,0,null,{"$f":"P55","v":7.0000000000000001E-3},{"$f":"Q55","v":150000},1050,null,0,0,null,{"$f":"W55","v":7.0000000000000001E-3},{"$f":"X55","v":150000},1050,null,0,0,null,{"$f":"AD55","v":7.0000000000000001E-3},{"$f":"AE55","v":150000},1050,null,0,0]
["TOU - Off Peak",null,"per kWh",null,8.3000000000000004E-2,{"$f":"0.64*$E$18","v":96000},7968,null,{"$f":"E56","v":8.3000000000000004E-2},{"$f":"F56","v":96000},7968,null,0,0,null,{"$f":"I56","v":8.3000000000000004E-2},{"$f":"J56","v":96000},7968,null,0,0,null,{"$f":"P56","v":8.3000000000000004E-2},{"$f":"Q56","v":96000},7968,null,0,0,null,{"$f":"W56","v":8.3000000000000004E-2},{"$f":"X56","v":96000},7968,null,0,0,null,{"$f":"AD56","v":8.3000000000000004E-2},{"$f":"AE56","v":96000},7968,null,0,0]
["TOU - Mid Peak",null,"per kWh",null,0.128,{"$f":"0.18*$E$18","v":27000},3456,null,{"$f":"E57","v":0.128},{"$f":"F57","v":27000},3456,null,0,0,null,{"$f":"I57","v":0.128},27000,3456,null,0,0,null,{"$f":"P57","v":0.128},27000,3456,null,0,0,null,{"$f":"W57","v":0.128},27000,3456,null,0,0,null,{"$f":"AD57","v":0.128},27000,3456,null,0,0]
["TOU - On Peak",null,"per kWh",null,0.17499999999999999,{"$f":"0.18*$E$18","v":27000},4725,null,0.17499999999999999,{"$f":"F58","v":27000},4725,null,0,0,null,0.17499999999999999,27000,4725,null,0,0,null,0.17499999999999999,27000,4725,null,0,0,null,0.17499999999999999,27000,4725,null,0,0,null,0.17499999999999999,27000,4725,null,0,0]
["Energy - RPP - Tier 1",null,"per kWh",null,9.9000000000000005E-2,{"$f":"IF(AND($S$1=1, E18>=600), 600, IF(AND($S$1=1, AND(E18<600, E18>=0)), E18, IF(AND($S$1=2, E18>=1000), 1000, IF(AND($S$1=2, AND(E18<1000, E18>=0)), E18))))","v":600},{"$f":"F59*E59","v":59.400000000000006},null,9.9000000000000005E-2,{"$f":"F59","v":600},{"$f":"J59*I59","v":59.400000000000006},null,0,0,null,9.9000000000000005E-2,600,{"$f":"Q59*P59","v":59.400000000000006},null,0,0,null,9.9000000000000005E-2,600,{"$f":"X59*W59","v":59.400000000000006},null,0,0,null,9.9000000000000005E-2,600,{"$f":"AE59*AD59","v":59.400000000000006},null,0,0,null,9.9000000000000005E-2,600,{"$f":"AL59*AK59","v":59.400000000000006},null,0,0]
["Energy - RPP - Tier 2",null,"per kWh",null,0.11600000000000001,{"$f":"IF(AND($S$1=1, E18>=600), E18-600, IF(AND($S$1=1, AND(E18<600, E18>=0)), 0, IF(AND($S$1=2, E18>=1000), E18-1000, IF(AND($S$1=2, AND(E18<1000, E18>=0)), 0))))","v":149400},{"$f":"F60*E60","v":17330.400000000001},null,0.11600000000000001,{"$f":"F60","v":149400},{"$f":"J60*I60","v":17330.400000000001},null,0,0,null,0.11600000000000001,149400,{"$f":"Q60*P60","v":17330.400000000001},null,0,0,null,0.11600000000000001,149400,{"$f":"X60*W60","v":17330.400000000001},null,0,0,null,0.11600000000000001,149400,{"$f":"AE60*AD60","v":17330.400000000001},null,0,0,null,0.11600000000000001,149400,{"$f":"AL60*AK60","v":17330.400000000001},null,0,0]
[null,null,null,null,null,null,null,null,null,null,null,null,null,null,null,null,null,null,null,null,"",null,null,null,null,null,null,"",null,null,null,null,null,null,"",null,null,null,null,null,null,""]
["Total Bill on TOU (before Taxes)",null,null,null,null,null,{"$f":"SUM(G52:G58,G51)","v":28890.937599999997},null,null,null,{"$f":"SUM(K52:K58,K51)","v":37079.669699999999},null,{"$f":"K62-G62","v":8188.7321000000011},{"$f":"IF((G62)=0,\"\",(M62/G62))","v":0.28343601074407504},null,null,null,{"$f":"SUM(R52:R58,R51)","v":29912.844699999994},null,{"$f":"R62-K62","v":-7166.8250000000044},-0.19328179182782754,null,null,null,{"$f":"SUM(Y52:Y58,Y51)","v":31669.357199999999},null,{"$f":"Y62-R62","v":1756.5125000000044},5.8721011579350217E-2,null,null,null,{"$f":"SUM(AF52:AF58,AF51)","v":32048.269699999997},null,{"$f":"AF62-Y62","v":378.91249999999854},1.1964641328432096E-2,null,null,null,{"$f":"SUM(AM52:AM58,AM51)","v":32329.782199999994},null,{"$f":"AM62-AF62","v":281.51249999999709},8.7840155688653949E-3]
["HST",null,null,null,0.13,null,{"$f":"G62*E63","v":3755.8218879999999},null,0.13,null,{"$f":"K62*I63","v":4820.3570609999997},null,1064.5351729999998,0.28343601074407493,null,0.13,null,{"$f":"R62*P63","v":3888.6698109999993},null,{"$f":"R63-K63","v":-931.6872500000004},-0.19328179182782751,null,0.13,null,{"$f":"Y62*W63","v":4117.0164359999999},null,{"$f":"Y63-R63","v":228.34662500000059},5.8721011579350217E-2,null,0.13,null,{"$f":"AF62*AD63","v":4166.2750609999994},null,{"$f":"AF63-Y63","v":49.258624999999483},1.1964641328432016E-2,null,0.13,null,{"$f":"AM62*AK63","v":4202.8716859999995},null,{"$f":"AM63-AF63","v":36.596625000000131},8.7840155688655181E-3]
["Total Bill (including HST)",null,null,null,null,null,{"$f":"G62+G63","v":32646.759487999996},null,null,null,{"$f":"K62+K63","v":41900.026761000001},null,9253.2672730000049,0.28343601074407515,null,null,null,{"$f":"R62+R63","v":33801.514510999994},null,-8098.512250000007,-0.19328179182782759,null,null,null,{"$f":"Y62+Y63","v":35786.373635999997},null,1984.8591250000027,5.8721011579350148E-2,null,null,null,{"$f":"AF62+AF63","v":36214.544760999997},null,428.17112500000076,1.1964641328432163E-2,null,null,null,{"$f":"AM62+AM63","v":36532.653885999993},null,318.1091249999954,8.7840155688653585E-3]
["Ontario Clean Energy Benefit 1",null,null,null,null,null,null,null,null,null,null,null,0,"",null,null,null,null,null,0,"",null,null,null,null,null,0,"",null,null,null,null,null,0,"",null,null,null,null,null,0,""]
["Total Bill on TOU (including OCEB)",null,null,null,null,null,{"$f":"G64+G65","v":32646.759487999996},null,null,null,{"$f":"K64+K65","v":41900.026761000001},null,9253.2672730000049,0.28343601074407515,null,null,null,{"$f":"R64+R65","v":33801.514510999994},null,-8098.512250000007,-0.19328179182782759,null,null,null,{"$f":"Y64+Y65","v":35786.373635999997},null,1984.8591250000027,5.8721011579350148E-2,null,null,null,{"$f":"AF64+AF65","v":36214.544760999997},null,428.17112500000076,1.1964641328432163E-2,null,null,null,{"$f":"AM64+AM65","v":36532.653885999993},null,318.1091249999954,8.7840155688653585E-3]
[null,null,null,null,null,null,null,null,null,null,null,null,null,null,null,null,null,null,null,null,"",null,null,null,null,null,null,"",null,null,null,null,null,null,"",null,null,null,null,null,null,""]
["Total Bill on RPP (before Taxes)",null,null,null,null,null,{"$f":"SUM(G59:G60,G51,G52:G55)","v":30131.737600000004},null,null,null,{"$f":"SUM(K59:K60,K51,K52:K55)","v":38320.469700000001},null,{"$f":"K68-G68","v":8188.7320999999974},{"$f":"IF((G68)=0,\"\",(M68/G68))","v":0.27176435055640458},null,null,null,{"$f":"SUM(R59:R60,R51,R52:R55)","v":31153.644699999997},null,{"$f":"R68-K68","v":-7166.8250000000044},-0.1870234121895433,null,null,null,{"$f":"SUM(Y59:Y60,Y51,Y52:Y55)","v":32910.157199999994},null,{"$f":"Y68-R68","v":1756.5124999999971},5.6382247307327008E-2,null,null,null,{"$f":"SUM(AF59:AF60,AF51,AF52:AF55)","v":33289.069699999993},null,{"$f":"AF68-Y68","v":378.91249999999854},1.1513542694350868E-2,null,null,null,{"$f":"SUM(AM59:AM60,AM51,AM52:AM55)","v":33570.582199999997},null,{"$f":"AM68-AF68","v":281.51250000000437},8.4566046013597202E-3]
["HST",null,null,null,0.13,null,{"$f":"G68*E69","v":3917.1258880000005},null,0.13,null,{"$f":"K68*I69","v":4981.6610610000007},null,1064.5351730000002,{"$f":"IF((G69)=0,\"\",(M69/G69))","v":0.27176435055640469},null,0.13,null,{"$f":"R68*P69","v":4049.9738109999998},null,{"$f":"R69-K69","v":-931.68725000000086},-0.18702341218954333,null,0.13,null,{"$f":"Y68*W69","v":4278.3204359999991},null,{"$f":"Y69-R69","v":228.34662499999922},5.6382247307326903E-2,null,0.13,null,{"$f":"AF68*AD69","v":4327.5790609999995},null,{"$f":"AF69-Y69","v":49.258625000000393},1.1513542694351004E-2,null,0.13,null,{"$f":"AM68*AK69","v":4364.1756859999996},null,{"$f":"AM69-AF69","v":36.596625000000131},8.4566046013596179E-3]
["Total Bill (including HST)",null,null,null,null,null,{"$f":"G68+G69","v":34048.863488000003},null,null,null,{"$f":"K68+K69","v":43302.130761},null,9253.2672729999977,0.27176435055640458,null,null,null,{"$f":"R68+R69","v":35203.618510999993},null,-8098.512250000007,-0.18702341218954333,null,null,null,{"$f":"Y68+Y69","v":37188.477635999996},null,1984.8591250000027,5.6382247307327181E-2,null,null,null,{"$f":"AF68+AF69","v":37616.648760999989},null,428.17112499999348,1.1513542694350737E-2,null,null,null,{"$f":"AM68+AM69","v":37934.757885999999},null,318.10912500000995,8.4566046013598538E-3]
["Ontario Clean Energy Benefit 1",null,null,null,null,null,null,null,null,null,null,null,0,"",null,null,null,null,null,0,"",null,null,null,null,null,0,"",null,null,null,null,null,0,"",null,null,null,null,null,0,""]
["Total Bill on RPP (including OCEB)",null,null,null,null,null,{"$f":"SUM(G70:G71)","v":34048.863488000003},null,null,null,{"$f":"SUM(K70:K71)","v":43302.130761},null,9253.2672729999977,0.27176435055640458,null,null,null,{"$f":"SUM(R70:R71)","v":35203.618510999993},null,-8098.512250000007,-0.18702341218954333,null,null,null,{"$f":"SUM(Y70:Y71)","v":37188.477635999996},null,1984.8591250000027,5.6382247307327181E-2,null,null,null,{"$f":"SUM(AF70:AF71)","v":37616.648760999989},null,428.17112499999348,1.1513542694350737E-2,null,null,null,{"$f":"SUM(AM70:AM71)","v":37934.757885999999},null,318.10912500000995,8.4566046013598538E-3]
[]
[]
["Loss Factor (%)",null,null,null,3.44E-2,null,null,null,3.9300000000000002E-2,null,null,null,null,null,null,3.9300000000000002E-2,null,null,null,null,null,null,3.9300000000000002E-2,null,null,null,null,null,null,3.9300000000000002E-2,null,null,null,null,null,null,3.9300000000000002E-2]
[]
["Distribution Excluding Rate Riders",null,null,null,"2015 Current Board-Approved",null,null,null,"2016 Test Year 1\nProposed",null,null,null,"Impact\n2016 TEST vs. \n2015 Bridge",null,null,"2017 Test Year 2\nProposed",null,null,null,"Impact\n2017 TEST 2 vs. \n2016 Test 1",null,null,"2018 Test Year 3\nProposed",null,null,null,"Impact\n2018 TEST 3 vs. \n2017 Test 2",null,null,"2019 Test Year 4\nProposed",null,null,null,"Impact\n2019 TEST 4 vs. \n2018 Test 3",null,null,"2020 Test Year 5 \nProposed",null,null,null,"Impact\n2019 TEST 5 vs. \n2019 Test 4"]
[null,null,"Charge Unit",null,"Rate","Volume","Charge",null,"Rate","Volume","Charge",null,"$ Change","% Change",null,"Rate","Volume","Charge",null,"$ Change","% Change",null,"Rate","Volume","Charge",null,"$ Change","% Change",null,"Rate","Volume","Charge",null,"$ Change","% Change",null,"Rate","Volume","Charge",null,"$ Change","% Change"]
[null,null,null,null,"($)",null,"($)",null,"($)",null,"($)",null,null,null,null,"($)",null,"($)",null,null,null,null,"($)",null,"($)",null,null,null,null,"($)",null,"($)",null,null,null,null,"($)",null,"($)"]
["Monthly Service Charge",null,"Monthly",null,{"$f":"'Rates Summary'!$D$33","v":1.02},{"$f":"$E$17","v":5000},{"$f":"F80*E80","v":5100},null,{"$f":"'Rates Summary'!$E$33","v":0.88},{"$f":"$E$17","v":5000},{"$f":"J80*I80","v":4400},null,{"$f":"K80-G80","v":-700},{"$f":"IF((G80)=0,\"\",(M80/G80))","v":-0.13725490196078433},null,{"$f":"'Rates Summary'!$F$33","v":1.05},{"$f":"$E$17","v":5000},{"$f":"Q80*P80","v":5250},null,{"$f":"R80-K80","v":850},{"$f":"IF((K80)=0,\"\",(T80/K80))","v":0.19318181818181818},null,{"$f":"'Rates Summary'!$G$33","v":1.24},{"$f":"$E$17","v":5000},{"$f":"X80*W80","v":6200},null,{"$f":"Y80-R80","v":950},{"$f":"IF((R80)=0,\"\",(AA80/R80))","v":0.18095238095238095},null,{"$f":"'Rates Summary'!$H$33","v":1.28},{"$f":"$E$17","v":5000},{"$f":"AE80*AD80","v":6400},null,{"$f":"AF80-Y80","v":200},{"$f":"IF((Y80)=0,\"\",(AH80/Y80))","v":3.2258064516129031E-2},null,{"$f":"'Rates Summary'!$I$33","v":1.31},{"$f":"$E$17","v":5000},{"$f":"AL80*AK80","v":6550},null,{"$f":"AM80-AF80","v":150},{"$f":"IF((AF80)=0,\"\",(AO80/AF80))","v":2.34375E-2}]
["Distribution Volumetric Rate",null,"per kW",null,{"$f":"'Rates Summary'!$D$45","v":4.6749999999999998},{"$f":"$E$19","v":375},{"$f":"F81*E81","v":1753.125},null,{"$f":"'Rates Summary'!$E$45","v":9.952},{"$f":"$E$19","v":375},{"$f":"J81*I81","v":3732},null,{"$f":"K81-G81","v":1978.875},{"$f":"IF((G81)=0,\"\",(M81/G81))","v":1.1287700534759357},null,{"$f":"'Rates Summary'!$F$45","v":11.891},{"$f":"$E$19","v":375},{"$f":"Q81*P81","v":4459.125},null,727.125,{"$f":"IF((K81)=0,\"\",(T81/K81))","v":0.19483520900321544},null,{"$f":"'Rates Summary'!$G$45","v":14.041700000000001},{"$f":"$E$19","v":375},{"$f":"X81*W81","v":5265.6374999999998},null,806.51249999999982,{"$f":"IF((R81)=0,\"\",(AA81/R81))","v":0.18086788327306363},null,{"$f":"'Rates Summary'!$H$45","v":14.518800000000001},{"$f":"$E$19","v":375},{"$f":"AE81*AD81","v":5444.55},null,178.91250000000036,{"$f":"IF((Y81)=0,\"\",(AH81/Y81))","v":3.3977367412777723E-2},null,{"$f":"'Rates Summary'!$I$45","v":14.8695},{"$f":"$E$19","v":375},{"$f":"AL81*AK81","v":5576.0625},null,131.51249999999982,{"$f":"IF((AF81)=0,\"\",(AO81/AF81))","v":2.4154888833787882E-2}]
["\"Regular\" Distribution Only",null,null,null,null,null,{"$f":"SUM(G80:G81)","v":6853.125},null,null,null,{"$f":"SUM(K80:K81)","v":8132},null,1278.875,0.18661194710442316,null,null,null,{"$f":"SUM(R80:R81)","v":9709.125},null,1577.125,0.19394060501721594,null,null,null,{"$f":"SUM(Y80:Y81)","v":11465.637500000001},null,1756.5125000000007,0.18091357357125393,null,null,null,{"$f":"SUM(AF80:AF81)","v":11844.55},null,378.91249999999854,3.3047660891075484E-2,null,null,null,{"$f":"SUM(AM80:AM81)","v":12126.0625},null,281.51250000000073,2.3767260047870182E-2]
[]
[]
[null,"Residential (kWh) - 100, 250, 500, 800, 1000, 1500, 2000"]
[null,"GS<50kW (kWh) - 1000, 2000, 5000, 10000, 15000"]
[null,"GS>50kW (kW) - 60, 100, 500, 1000"]
[null,"Large User - range appropriate for utility"]
[null,"Lighting Classes and USL - 150 kWh and 1 kW, range appropriate for utility."]
[]
[null,null,"Note that cells with the highlighted color shown to the left indicate quantities that are loss adjusted."]

{"sheet":"Bill Impact St Light 1kW","index":24,"n_rows":91,"n_cols":42,"rows_kept":91,"cut":false,"hidden":false,"merged":[[19,33,19,34],[19,36,19,38],[20,20,21,20],[20,26,21,26],[19,40,19,41],[19,22,19,24],[19,26,19,27],[19,29,19,31],[20,27,21,27],[20,33,21,33],[20,34,21,34],[20,40,21,40],[20,41,21,41],[2,0,2,9],[9,0,9,13],[10,0,10,13],[13,2,13,13],[13,15,13,26],[19,4,19,6],[19,8,19,10],[19,12,19,13],[19,15,19,17],[19,19,19,20],[64,0,64,2],[20,2,21,2],[20,12,21,12],[20,13,21,13],[20,19,21,19],[76,29,76,31],[76,33,76,34],[77,34,78,34],[65,0,65,2],[70,0,70,2],[71,0,71,2],[76,4,76,6],[76,8,76,10],[76,12,76,13],[77,40,78,40],[77,41,78,41],[76,36,76,38],[76,40,76,41],[77,2,78,2],[77,12,78,12],[77,13,78,13],[77,19,78,19],[77,20,78,20],[77,26,78,26],[77,27,78,27],[77,33,78,33],[76,15,76,17],[76,19,76,20],[76,22,76,24],[76,26,76,27]]}
[null,null,null,null,null,null,null,null,null,null,null,null,"File Number:",{"$f":"EBNUMBER","v":"EB-2015-0083"},null,null,null,null,1]
[null,null,null,null,null,null,null,null,null,null,null,null,"Exhibit:",{"$f":"'Bill Impact Resi 204kWh'!$N$2","v":8}]
[null,null,null,null,null,null,null,null,null,null,null,null,"Tab:",{"$f":"'Bill Impact Resi 204kWh'!$N$3","v":4}]
[null,null,null,null,null,null,null,null,null,null,null,null,"Schedule:",{"$f":"'Bill Impact Resi 204kWh'!$N$4","v":3}]
[null,null,null,null,null,null,null,null,null,null,null,null,"Page:"]
[]
[null,null,null,null,null,null,null,null,null,null,null,null,"Date:",{"$f":"'Bill Impact Resi 204kWh'!$N$7","v":"Settlement"}]
[]
[]
["Appendix 2-W"]
["Bill Impacts"]
[]
[]
["Customer Class:",null,"Street Lighting",null,null,null,null,null,null,null,null,null,null,null,null,{"$f":"C14","v":"Street Lighting"},null,null,null,null,null,null,null,null,null,null,null,null,null,null,null,null,null,null,null,null,{"$f":"P14","v":"Street Lighting"}]
[]
["TOU / non-TOU:",null,"TOU"]
[null,null,"Lights",null,15,"number of"]
[null,null,"Consumption",null,400," kWh"]
[null,null,"Load",null,1,"kW"]
[null,null,null,null,"2015 Current Board-Approved",null,null,null,"2016 Test Year 1\nProposed",null,null,null,"Impact\n2016 TEST vs. \n2015 Bridge",null,null,"2017 Test Year 2\nProposed",null,null,null,"Impact\n2017 TEST 2 vs. \n2016 Test 1",null,null,"2018 Test Year 3\nProposed",null,null,null,"Impact\n2018 TEST 3 vs. \n2017 Test 2",null,null,"2019 Test Year 4\nProposed",null,null,null,"Impact\n2019 TEST 4 vs. \n2018 Test 3",null,null,"2020 Test Year 5 \nProposed",null,null,null,"Impact\n2019 TEST 5 vs. \n2019 Test 4"]
[null,null,"Charge Unit",null,"Rate","Volume","Charge",null,"Rate","Volume","Charge",null,"$ Change","% Change",null,"Rate","Volume","Charge",null,"$ Change","% Change",null,"Rate","Volume","Charge",null,"$ Change","% Change",null,"Rate","Volume","Charge",null,"$ Change","% Change",null,"Rate","Volume","Charge",null,"$ Change","% Change"]
[null,null,null,null,"($)",null,"($)",null,"($)",null,"($)",null,null,null,null,"($)",null,"($)",null,null,null,null,"($)",null,"($)",null,null,null,null,"($)",null,"($)",null,null,null,null,"($)",null,"($)"]
["Monthly Service Charge (per light)",null,"Monthly",null,{"$f":"'Rates Summary'!$D$33","v":1.02},{"$f":"$E$17","v":15},{"$f":"F23*E23","v":15.3},null,{"$f":"'Rates Summary'!$E$33","v":0.88},{"$f":"$E$17","v":15},{"$f":"J23*I23","v":13.2},null,{"$f":"K23-G23","v":-2.1000000000000014},{"$f":"IF((G23)=0,\"\",(M23/G23))","v":-0.13725490196078441},null,{"$f":"'Rates Summary'!$F$33","v":1.05},{"$f":"$E$17","v":15},{"$f":"Q23*P23","v":15.75},null,{"$f":"R23-K23","v":2.5500000000000007},{"$f":"IF((K23)=0,\"\",(T23/K23))","v":0.19318181818181823},null,{"$f":"'Rates Summary'!$G$33","v":1.24},{"$f":"$E$17","v":15},{"$f":"X23*W23","v":18.600000000000001},null,{"$f":"Y23-R23","v":2.8500000000000014},{"$f":"IF((R23)=0,\"\",(AA23/R23))","v":0.18095238095238103},null,{"$f":"'Rates Summary'!$H$33","v":1.28},{"$f":"$E$17","v":15},{"$f":"AE23*AD23","v":19.2},null,{"$f":"AF23-Y23","v":0.59999999999999787},{"$f":"IF((Y23)=0,\"\",(AH23/Y23))","v":3.2258064516128913E-2},null,{"$f":"'Rates Summary'!$I$33","v":1.31},{"$f":"$E$17","v":15},{"$f":"AL23*AK23","v":19.650000000000002},null,{"$f":"AM23-AF23","v":0.45000000000000284},{"$f":"IF((AF23)=0,\"\",(AO23/AF23))","v":2.3437500000000149E-2}]
["Smart Meter (SMIRR) Rate Rider",null,null,null,0,1,{"$f":"F24*E24","v":0},null,0,1,{"$f":"J24*I24","v":0},null,{"$f":"K24-G24","v":0},{"$f":"IF((G24)=0,\"\",(M24/G24))","v":""},null,0,1,{"$f":"Q24*P24","v":0},null,0,{"$f":"IF((K24)=0,\"\",(T24/K24))","v":""},null,0,1,{"$f":"X24*W24","v":0},null,0,{"$f":"IF((R24)=0,\"\",(AA24/R24))","v":""},null,0,1,{"$f":"AE24*AD24","v":0},null,0,{"$f":"IF((Y24)=0,\"\",(AH24/Y24))","v":""},null,0,1,{"$f":"AL24*AK24","v":0},null,0,{"$f":"IF((AF24)=0,\"\",(AO24/AF24))","v":""}]
["Rate Rider Smart Meters Capital (2016)",null,null,null,0,1,0,null,0,1,{"$f":"J25*I25","v":0},null,{"$f":"K25-G25","v":0},{"$f":"IF((G25)=0,\"\",(M25/G25))","v":""},null,0,1,{"$f":"Q25*P25","v":0},null,0,"",null,0,1,{"$f":"X25*W25","v":0},null,0,"",null,0,1,{"$f":"AE25*AD25","v":0},null,0,"",null,0,1,{"$f":"AL25*AK25","v":0},null,0,""]
["Rate Rider Recovery of Stranded Meters",null,null,null,0,1,0,null,0,1,0,null,0,"",null,0,1,0,null,0,"",null,0,1,0,null,0,"",null,0,1,0,null,0,"",null,0,1,0,null,0,""]
[null,null,null,null,null,1,0,null,null,1,0,null,0,"",null,null,1,0,null,0,"",null,null,1,0,null,0,"",null,null,1,0,null,0,"",null,null,1,0,null,0,""]
[null,null,null,null,null,1,0,null,null,1,0,null,0,"",null,null,1,0,null,0,"",null,null,1,0,null,0,"",null,null,1,0,null,0,"",null,null,1,0,null,0,""]
["Distribution Volumetric Rate",null,"per kW",null,{"$f":"'Rates Summary'!$D$45","v":4.6749999999999998},{"$f":"$E$19","v":1},4.6749999999999998,null,{"$f":"'Rates Summary'!$E$45","v":9.952},{"$f":"$E$19","v":1},9.952,null,5.2770000000000001,1.128770053475936,null,{"$f":"'Rates Summary'!$F$45","v":11.891},{"$f":"$E$19","v":1},11.891,null,1.9390000000000001,0.19483520900321544,null,{"$f":"'Rates Summary'!$G$45","v":14.041700000000001},{"$f":"$E$19","v":1},14.041700000000001,null,2.1507000000000005,0.18086788327306369,null,{"$f":"'Rates Summary'!$H$45","v":14.518800000000001},{"$f":"$E$19","v":1},14.518800000000001,null,0.47710000000000008,3.3977367412777661E-2,null,{"$f":"'Rates Summary'!$I$45","v":14.8695},{"$f":"$E$19","v":1},14.8695,null,0.35069999999999979,2.4154888833787899E-2]
["Rate Rider Tax Change (2015)",null,null,null,-2.7799999999999998E-2,{"$f":"$E$19","v":1},-2.7799999999999998E-2,null,0,{"$f":"$E$19","v":1},0,null,2.7799999999999998E-2,-1,null,0,{"$f":"$E$19","v":1},0,null,0,"",null,0,{"$f":"$E$19","v":1},0,null,0,"",null,0,{"$f":"$E$19","v":1},0,null,0,"",null,0,{"$f":"$E$19","v":1},0,null,0,""]
["LRAM VA (2016)",null,"per kW",null,0,1,0,null,{"$f":"'Rates Summary'!H7","v":7.0278999999999998},1,7.0278999999999998,null,7.0278999999999998,"",null,0,1,0,null,-7.0278999999999998,-1,null,0,1,0,null,0,"",null,0,1,0,null,0,"",null,0,1,0,null,0,""]
["Rate Rider Incremental Capital 2012 True-Up (2016)",null,"per kW",null,0,1,0,null,{"$f":"'Rates Summary'!H9","v":0.246},1,0.246,null,0.246,"",null,0,1,0,null,-0.246,-1,null,0,1,0,null,0,"",null,0,1,0,null,0,"",null,0,1,0,null,0,""]
[null,null,null,null,null,1,0,null,null,1,0,null,0,"",null,null,1,0,null,0,"",null,null,1,0,null,0,"",null,null,1,0,null,0,"",null,null,1,0,null,0,""]
[null,null,null,null,null,1,0,null,null,1,0,null,0,"",null,null,1,0,null,0,"",null,null,1,0,null,0,"",null,null,1,0,null,0,"",null,null,1,0,null,0,""]
[null,null,null,null,null,1,0,null,null,1,0,null,0,"",null,null,1,0,null,0,"",null,null,1,0,null,0,"",null,null,1,0,null,0,"",null,null,1,0,null,0,""]
[null,null,null,null,null,1,0,null,null,1,0,null,0,"",null,null,1,0,null,0,"",null,null,1,0,null,0,"",null,null,1,0,null,0,"",null,null,1,0,null,0,""]
[null,null,null,null,null,1,0,null,null,1,0,null,0,"",null,null,1,0,null,0,"",null,null,1,0,null,0,"",null,null,1,0,null,0,"",null,null,1,0,null,0,""]
[null,null,null,null,null,1,0,null,null,1,0,null,0,"",null,null,1,0,null,0,"",null,null,1,0,null,0,"",null,null,1,0,null,0,"",null,null,1,0,null,0,""]
["Sub-Total A (excluding pass through)",null,null,null,null,null,{"$f":"SUM(G23:G38)","v":19.947200000000002},null,null,null,{"$f":"SUM(K23:K38)","v":30.425899999999999},null,10.478699999999996,0.52532184968316331,null,null,null,{"$f":"SUM(R23:R38)","v":27.640999999999998},null,-2.7849000000000004,-9.1530570993791485E-2,null,null,null,{"$f":"SUM(Y23:Y38)","v":32.6417},null,5.0007000000000019,0.18091603053435124,null,null,null,{"$f":"SUM(AF23:AF38)","v":33.718800000000002},null,1.0771000000000015,3.299766862632772E-2,null,null,null,{"$f":"SUM(AM23:AM38)","v":34.519500000000001},null,0.80069999999999908,2.3746396668920575E-2]
["Deferral/Variance Account Disposition Rate Rider (2016)",null,"per kW",null,0,1,{"$f":"F40*E40","v":0},null,{"$f":"'Rates Summary'!H5","v":14.8985},1,{"$f":"J40*I40","v":14.8985},null,{"$f":"K40-G40","v":14.8985},{"$f":"IF((G40)=0,\"\",(M40/G40))","v":""},null,0,1,{"$f":"Q40*P40","v":0},null,-14.8985,-1,null,0,1,{"$f":"X40*W40","v":0},null,0,"",null,0,1,{"$f":"AE40*AD40","v":0},null,0,"",null,0,1,{"$f":"AL40*AK40","v":0},null,0,""]
[null,null,null,null,null,1,{"$f":"F41*E41","v":0},null,null,1,{"$f":"J41*I41","v":0},null,{"$f":"K41-G41","v":0},{"$f":"IF((G41)=0,\"\",(M41/G41))","v":""},null,null,1,{"$f":"Q41*P41","v":0},null,0,"",null,null,1,{"$f":"X41*W41","v":0},null,0,"",null,null,1,{"$f":"AE41*AD41","v":0},null,0,"",null,null,1,{"$f":"AL41*AK41","v":0},null,0,""]
["Rate Rider CGAAP Account 1576 (2016)",null,"per kW",null,0,1,0,null,{"$f":"'Rates Summary'!$H$8","v":-6.6951999999999998},1,-6.6951999999999998,null,-6.6951999999999998,"",null,null,1,0,null,6.6951999999999998,-1,null,null,1,0,null,0,"",null,null,1,0,null,0,"",null,null,1,0,null,0,""]
["Disposition of Global Adjustment (2015)  \nApplicable to Non-RPP Customers",null,"per kW",null,5.5544000000000002,1,5.5544000000000002,null,0,1,0,null,-5.5544000000000002,-1,null,0,1,0,null,0,"",null,0,1,0,null,0,"",null,0,1,0,null,0,"",null,0,1,0,null,0,""]
["Disposition of Global Adjustment (2016) \nApplicable to Non-RPP Customers",null,"per kW",null,0,1,0,null,{"$f":"'Rates Summary'!H6","v":7.84},1,7.84,null,7.84,"",null,0,1,0,null,-7.84,-1,null,0,1,0,null,0,"",null,0,1,0,null,0,"",null,0,1,0,null,0,""]
["Low Voltage Service Charge",null,"per kW",null,0.182,1,{"$f":"F45*E45","v":0.182},null,{"$f":"'Rates Summary'!H15","v":0.33679999999999999},1,{"$f":"J45*I45","v":0.33679999999999999},null,{"$f":"K45-G45","v":0.15479999999999999},{"$f":"IF((G45)=0,\"\",(M45/G45))","v":0.85054945054945053},null,{"$f":"I45","v":0.33679999999999999},1,{"$f":"Q45*P45","v":0.33679999999999999},null,{"$f":"R45-K45","v":0},0,null,{"$f":"P45","v":0.33679999999999999},1,{"$f":"X45*W45","v":0.33679999999999999},null,{"$f":"Y45-R45","v":0},0,null,{"$f":"W45","v":0.33679999999999999},1,{"$f":"AE45*AD45","v":0.33679999999999999},null,{"$f":"AF45-Y45","v":0},0,null,{"$f":"AD45","v":0.33679999999999999},1,{"$f":"AL45*AK45","v":0.33679999999999999},null,{"$f":"AM45-AF45","v":0},0]
["Line Losses on Cost of Power",null,"per kWh",null,{"$f":"IF(ISBLANK(C16)=TRUE, 0, IF(C16=\"TOU\", 0.64*$E$56+0.18*$E$57+0.18*$E$58, IF(AND(C16=\"non-TOU\", F60>0), E60,E59)))","v":0.10766000000000001},{"$f":"$E$18*(1+$E$75)-$E$18","v":13.759999999999991},1.4814015999999992,null,{"$f":"E46","v":0.10766000000000001},{"$f":"$E$18*(1+$I$75)-$E$18","v":15.71999999999997},1.692415199999997,null,0.2110135999999978,0.14244186046511487,null,{"$f":"I46","v":0.10766000000000001},{"$f":"$E$18*(1+$I$75)-$E$18","v":15.71999999999997},{"$f":"Q46*P46","v":1.692415199999997},null,{"$f":"R46-K46","v":0},0,null,{"$f":"P46","v":0.10766000000000001},{"$f":"$E$18*(1+$I$75)-$E$18","v":15.71999999999997},{"$f":"X46*W46","v":1.692415199999997},null,{"$f":"Y46-R46","v":0},0,null,{"$f":"W46","v":0.10766000000000001},{"$f":"$E$18*(1+$I$75)-$E$18","v":15.71999999999997},{"$f":"AE46*AD46","v":1.692415199999997},null,{"$f":"AF46-Y46","v":0},0,null,{"$f":"AD46","v":0.10766000000000001},{"$f":"$E$18*(1+$I$75)-$E$18","v":15.71999999999997},{"$f":"AL46*AK46","v":1.692415199999997},null,{"$f":"AM46-AF46","v":0},0]
["Smart Meter Entity Charge",null,null,null,null,1,{"$f":"F47*E47","v":0},null,{"$f":"E47","v":0},1,{"$f":"J47*I47","v":0},null,{"$f":"I47","v":0},null,null,{"$f":"M47","v":0},1,{"$f":"Q47*P47","v":0},null,{"$f":"R47-K47","v":0},"",null,{"$f":"P47","v":0},1,{"$f":"X47*W47","v":0},null,{"$f":"Y47-R47","v":0},"",null,{"$f":"W47","v":0},1,{"$f":"AE47*AD47","v":0},null,{"$f":"AF47-Y47","v":0},"",null,{"$f":"AD47","v":0},1,{"$f":"AL47*AK47","v":0},null,{"$f":"AM47-AF47","v":0},""]
["Sub-Total B - Distribution (includes Sub-Total A)",null,null,null,null,null,{"$f":"SUM(G40:G47)+G39","v":27.165001600000004},null,null,null,{"$f":"SUM(K40:K47)+K39","v":48.498415199999997},null,{"$f":"K48-G48","v":21.333413599999993},{"$f":"IF((G48)=0,\"\",(M48/G48))","v":0.78532716154892446},null,null,null,{"$f":"SUM(R40:R47)+R39","v":29.670215199999994},null,{"$f":"R48-K48","v":-18.828200000000002},-0.38822299496499846,null,null,null,{"$f":"SUM(Y40:Y47)+Y39","v":34.670915199999996},null,{"$f":"Y48-R48","v":5.0007000000000019},0.1685427613615692,null,null,null,{"$f":"SUM(AF40:AF47)+AF39","v":35.748015199999998},null,{"$f":"AF48-Y48","v":1.0771000000000015},3.1066385002724173E-2,null,null,null,{"$f":"SUM(AM40:AM47)+AM39","v":36.548715199999997},null,{"$f":"AM48-AF48","v":0.80069999999999908},2.2398446333882032E-2]
["RTSR - Network",null,"per kW",null,1.9006000000000001,{"$f":"$E$19","v":1},{"$f":"F49*E49","v":1.9006000000000001},null,{"$f":"'Rates Summary'!H17","v":2.0078},{"$f":"$E$19","v":1},{"$f":"J49*I49","v":2.0078},null,0.10719999999999996,5.640324108176363E-2,null,{"$f":"I49","v":2.0078},{"$f":"$E$19","v":1},{"$f":"Q49*P49","v":2.0078},null,0,0,null,{"$f":"P49","v":2.0078},{"$f":"$E$19","v":1},{"$f":"X49*W49","v":2.0078},null,0,0,null,{"$f":"W49","v":2.0078},{"$f":"$E$19","v":1},{"$f":"AE49*AD49","v":2.0078},null,0,0,null,{"$f":"AD49","v":2.0078},{"$f":"$E$19","v":1},{"$f":"AL49*AK49","v":2.0078},null,0,0]
["RTSR - Line and Transformation Connection",null,"per kW",null,1.4538,1,{"$f":"F50*E50","v":1.4538},null,{"$f":"'Rates Summary'!H18","v":1.6052999999999999},1,{"$f":"J50*I50","v":1.6052999999999999},null,0.15149999999999997,0.10420965744944281,null,{"$f":"I50","v":1.6052999999999999},1,{"$f":"Q50*P50","v":1.6052999999999999},null,0,0,null,{"$f":"P50","v":1.6052999999999999},1,{"$f":"X50*W50","v":1.6052999999999999},null,0,0,null,{"$f":"W50","v":1.6052999999999999},1,{"$f":"AE50*AD50","v":1.6052999999999999},null,0,0,null,{"$f":"AD50","v":1.6052999999999999},1,{"$f":"AL50*AK50","v":1.6052999999999999},null,0,0]
["Sub-Total C - Delivery (including Sub-Total B)",null,null,null,null,null,{"$f":"SUM(G48:G50)","v":30.519401600000005},null,null,null,{"$f":"SUM(K48:K50)","v":52.111515199999999},null,21.592113599999994,0.70748810487817659,null,null,null,{"$f":"SUM(R48:R50)","v":33.283315199999997},null,-18.828200000000002,-0.36130594030395807,null,null,null,{"$f":"SUM(Y48:Y50)","v":38.284015199999999},null,5.0007000000000019,0.15024645141118642,null,null,null,{"$f":"SUM(AF48:AF50)","v":39.3611152},null,1.0771000000000015,2.8134457537254388E-2,null,null,null,{"$f":"SUM(AM48:AM50)","v":40.161815199999999},null,0.80069999999999908,2.0342411436553989E-2]
["Wholesale Market Service Charge (WMSC)",null,"per kWh",null,4.4000000000000003E-3,{"$f":"$E$18*(1+$E$75)","v":413.76},{"$f":"F52*E52","v":1.8205440000000002},null,{"$f":"E52","v":4.4000000000000003E-3},{"$f":"$E$18*(1+I75)","v":415.71999999999997},{"$f":"J52*I52","v":1.8291679999999999},null,8.623999999999743E-3,4.7370456303169502E-3,null,{"$f":"I52","v":4.4000000000000003E-3},{"$f":"$E$18*(1+P75)","v":415.71999999999997},{"$f":"Q52*P52","v":1.8291679999999999},null,0,0,null,{"$f":"P52","v":4.4000000000000003E-3},{"$f":"$E$18*(1+W75)","v":415.71999999999997},{"$f":"X52*W52","v":1.8291679999999999},null,0,0,null,{"$f":"W52","v":4.4000000000000003E-3},{"$f":"$E$18*(1+AD75)","v":415.71999999999997},{"$f":"AE52*AD52","v":1.8291679999999999},null,0,0,null,{"$f":"AD52","v":4.4000000000000003E-3},{"$f":"$E$18*(1+AK75)","v":415.71999999999997},{"$f":"AL52*AK52","v":1.8291679999999999},null,0,0]
["Rural and Remote Rate Protection (RRRP)",null,"per kWh",null,1.2999999999999999E-3,{"$f":"$E$18*(1+$E$75)","v":413.76},0.53788799999999992,null,{"$f":"E53","v":1.2999999999999999E-3},{"$f":"$E$18*(1+I75)","v":415.71999999999997},0.54043599999999992,null,2.5479999999999947E-3,4.7370456303170829E-3,null,{"$f":"I53","v":1.2999999999999999E-3},{"$f":"$E$18*(1+P75)","v":415.71999999999997},0.54043599999999992,null,0,0,null,{"$f":"P53","v":1.2999999999999999E-3},{"$f":"$E$18*(1+W75)","v":415.71999999999997},0.54043599999999992,null,0,0,null,{"$f":"W53","v":1.2999999999999999E-3},{"$f":"$E$18*(1+AD75)","v":415.71999999999997},0.54043599999999992,null,0,0,null,{"$f":"AD53","v":1.2999999999999999E-3},{"$f":"$E$18*(1+AK75)","v":415.71999999999997},0.54043599999999992,null,0,0]
["Standard Supply Service Charge",null,"Monthly",null,0.25,1,0.25,null,{"$f":"E54","v":0.25},1,0.25,null,0,0,null,{"$f":"I54","v":0.25},1,0.25,null,0,0,null,{"$f":"P54","v":0.25},1,0.25,null,0,0,null,{"$f":"W54","v":0.25},1,0.25,null,0,0,null,{"$f":"AD54","v":0.25},1,0.25,null,0,0]
["Debt Retirement Charge (DRC)",null,"per kWh",null,7.0000000000000001E-3,{"$f":"E18","v":400},2.8000000000000003,null,{"$f":"E55","v":7.0000000000000001E-3},{"$f":"E18","v":400},2.8000000000000003,null,0,0,null,{"$f":"I55","v":7.0000000000000001E-3},{"$f":"J55","v":400},2.8000000000000003,null,0,0,null,{"$f":"P55","v":7.0000000000000001E-3},{"$f":"Q55","v":400},2.8000000000000003,null,0,0,null,{"$f":"W55","v":7.0000000000000001E-3},{"$f":"X55","v":400},2.8000000000000003,null,0,0,null,{"$f":"AD55","v":7.0000000000000001E-3},{"$f":"AE55","v":400},2.8000000000000003,null,0,0]
["TOU - Off Peak",null,"per kWh",null,8.3000000000000004E-2,{"$f":"0.64*$E$18","v":256},21.248000000000001,null,{"$f":"E56","v":8.3000000000000004E-2},{"$f":"F56","v":256},21.248000000000001,null,0,0,null,{"$f":"I56","v":8.3000000000000004E-2},{"$f":"J56","v":256},21.248000000000001,null,0,0,null,{"$f":"P56","v":8.3000000000000004E-2},{"$f":"Q56","v":256},21.248000000000001,null,0,0,null,{"$f":"W56","v":8.3000000000000004E-2},{"$f":"X56","v":256},21.248000000000001,null,0,0,null,{"$f":"AD56","v":8.3000000000000004E-2},{"$f":"AE56","v":256},21.248000000000001,null,0,0]
["TOU - Mid Peak",null,"per kWh",null,0.128,{"$f":"0.18*$E$18","v":72},9.2160000000000011,null,{"$f":"E57","v":0.128},{"$f":"F57","v":72},9.2160000000000011,null,0,0,null,{"$f":"I57","v":0.128},72,9.2160000000000011,null,0,0,null,{"$f":"P57","v":0.128},72,9.2160000000000011,null,0,0,null,{"$f":"W57","v":0.128},72,9.2160000000000011,null,0,0,null,{"$f":"AD57","v":0.128},72,9.2160000000000011,null,0,0]
["TOU - On Peak",null,"per kWh",null,0.17499999999999999,{"$f":"0.18*$E$18","v":72},12.6,null,0.17499999999999999,{"$f":"F58","v":72},12.6,null,0,0,null,0.17499999999999999,72,12.6,null,0,0,null,0.17499999999999999,72,12.6,null,0,0,null,0.17499999999999999,72,12.6,null,0,0,null,0.17499999999999999,72,12.6,null,0,0]
["Energy - RPP - Tier 1",null,"per kWh",null,9.9000000000000005E-2,{"$f":"IF(AND($S$1=1, E18>=600), 600, IF(AND($S$1=1, AND(E18<600, E18>=0)), E18, IF(AND($S$1=2, E18>=1000), 1000, IF(AND($S$1=2, AND(E18<1000, E18>=0)), E18))))","v":400},{"$f":"F59*E59","v":39.6},null,9.9000000000000005E-2,{"$f":"F59","v":400},{"$f":"J59*I59","v":39.6},null,0,0,null,9.9000000000000005E-2,400,{"$f":"Q59*P59","v":39.6},null,0,0,null,9.9000000000000005E-2,400,{"$f":"X59*W59","v":39.6},null,0,0,null,9.9000000000000005E-2,400,{"$f":"AE59*AD59","v":39.6},null,0,0,null,9.9000000000000005E-2,400,{"$f":"AL59*AK59","v":39.6},null,0,0]
["Energy - RPP - Tier 2",null,"per kWh",null,0.11600000000000001,{"$f":"IF(AND($S$1=1, E18>=600), E18-600, IF(AND($S$1=1, AND(E18<600, E18>=0)), 0, IF(AND($S$1=2, E18>=1000), E18-1000, IF(AND($S$1=2, AND(E18<1000, E18>=0)), 0))))","v":0},{"$f":"F60*E60","v":0},null,0.11600000000000001,{"$f":"F60","v":0},{"$f":"J60*I60","v":0},null,0,"",null,0.11600000000000001,0,{"$f":"Q60*P60","v":0},null,0,"",null,0.11600000000000001,0,{"$f":"X60*W60","v":0},null,0,"",null,0.11600000000000001,0,{"$f":"AE60*AD60","v":0},null,0,"",null,0.11600000000000001,0,{"$f":"AL60*AK60","v":0},null,0,""]
[null,null,null,null,null,null,null,null,null,null,null,null,null,null,null,null,null,null,null,null,"",null,null,null,null,null,null,"",null,null,null,null,null,null,"",null,null,null,null,null,null,""]
["Total Bill on TOU (before Taxes)",null,null,null,null,null,{"$f":"SUM(G52:G58,G51)","v":78.991833600000007},null,null,null,{"$f":"SUM(K52:K58,K51)","v":100.5951192},null,{"$f":"K62-G62","v":21.603285599999992},{"$f":"IF((G62)=0,\"\",(M62/G62))","v":0.27348758239231441},null,null,null,{"$f":"SUM(R52:R58,R51)","v":81.766919200000004},null,{"$f":"R62-K62","v":-18.828199999999995},-0.18716812654266426,null,null,null,{"$f":"SUM(Y52:Y58,Y51)","v":86.767619200000013},null,{"$f":"Y62-R62","v":5.000700000000009},6.115798478072057E-2,null,null,null,{"$f":"SUM(AF52:AF58,AF51)","v":87.844719200000014},null,{"$f":"AF62-Y62","v":1.0771000000000015},1.2413617083549083E-2,null,null,null,{"$f":"SUM(AM52:AM58,AM51)","v":88.645419200000006},null,{"$f":"AM62-AF62","v":0.80069999999999197},9.1149474583327242E-3]
["HST",null,null,null,0.13,null,{"$f":"G62*E63","v":10.268938368000001},null,0.13,null,{"$f":"K62*I63","v":13.077365496000001},null,2.8084271279999999,0.27348758239231452,null,0.13,null,{"$f":"R62*P63","v":10.629699496000001},null,{"$f":"R63-K63","v":-2.4476659999999999},-0.18716812654266429,null,0.13,null,{"$f":"Y62*W63","v":11.279790496000002},null,{"$f":"Y63-R63","v":0.65009100000000153},6.1157984780720605E-2,null,0.13,null,{"$f":"AF62*AD63","v":11.419813496000002},null,{"$f":"AF63-Y63","v":0.14002299999999934},1.2413617083549006E-2,null,0.13,null,{"$f":"AM62*AK63","v":11.523904496000002},null,{"$f":"AM63-AF63","v":0.10409100000000038},9.1149474583328491E-3]
["Total Bill (including HST)",null,null,null,null,null,{"$f":"G62+G63","v":89.260771968},null,null,null,{"$f":"K62+K63","v":113.672484696},null,24.411712727999998,0.27348758239231452,null,null,null,{"$f":"R62+R63","v":92.396618696000004},null,-21.275865999999994,-0.18716812654266426,null,null,null,{"$f":"Y62+Y63","v":98.047409696000017},null,5.6507910000000123,6.1157984780720598E-2,null,null,null,{"$f":"AF62+AF63","v":99.264532696000018},null,1.2171230000000008,1.2413617083549074E-2,null,null,null,{"$f":"AM62+AM63","v":100.16932369600001},null,0.9047909999999888,9.1149474583327016E-3]
["Ontario Clean Energy Benefit 1",null,null,null,null,null,null,null,null,null,null,null,0,"",null,null,null,null,null,0,"",null,null,null,null,null,0,"",null,null,null,null,null,0,"",null,null,null,null,null,0,""]
["Total Bill on TOU (including OCEB)",null,null,null,null,null,{"$f":"G64+G65","v":89.260771968},null,null,null,{"$f":"K64+K65","v":113.672484696},null,24.411712727999998,0.27348758239231452,null,null,null,{"$f":"R64+R65","v":92.396618696000004},null,-21.275865999999994,-0.18716812654266426,null,null,null,{"$f":"Y64+Y65","v":98.047409696000017},null,5.6507910000000123,6.1157984780720598E-2,null,null,null,{"$f":"AF64+AF65","v":99.264532696000018},null,1.2171230000000008,1.2413617083549074E-2,null,null,null,{"$f":"AM64+AM65","v":100.16932369600001},null,0.9047909999999888,9.1149474583327016E-3]
[null,null,null,null,null,null,null,null,null,null,null,null,null,null,null,null,null,null,null,null,"",null,null,null,null,null,null,"",null,null,null,null,null,null,"",null,null,null,null,null,null,""]
["Total Bill on RPP (before Taxes)",null,null,null,null,null,{"$f":"SUM(G59:G60,G51,G52:G55)","v":75.527833599999994},null,null,null,{"$f":"SUM(K59:K60,K51,K52:K55)","v":97.131119200000001},null,{"$f":"K68-G68","v":21.603285600000007},{"$f":"IF((G68)=0,\"\",(M68/G68))","v":0.28603078587441449},null,null,null,{"$f":"SUM(R59:R60,R51,R52:R55)","v":78.302919199999991},null,{"$f":"R68-K68","v":-18.82820000000001},-0.19384312828962039,null,null,null,{"$f":"SUM(Y59:Y60,Y51,Y52:Y55)","v":83.303619199999986},null,{"$f":"Y68-R68","v":5.0006999999999948},6.3863519407587999E-2,null,null,null,{"$f":"SUM(AF59:AF60,AF51,AF52:AF55)","v":84.380719199999987},null,{"$f":"AF68-Y68","v":1.0771000000000015},1.2929810377314334E-2,null,null,null,{"$f":"SUM(AM59:AM60,AM51,AM52:AM55)","v":85.181419199999993},null,{"$f":"AM68-AF68","v":0.80070000000000618},9.4891345747146263E-3]
["HST",null,null,null,0.13,null,{"$f":"G68*E69","v":9.8186183679999992},null,0.13,null,{"$f":"K68*I69","v":12.627045496000001},null,2.8084271280000017,{"$f":"IF((G69)=0,\"\",(M69/G69))","v":0.28603078587441461},null,0.13,null,{"$f":"R68*P69","v":10.179379495999999},null,{"$f":"R69-K69","v":-2.4476660000000017},-0.19384312828962041,null,0.13,null,{"$f":"Y68*W69","v":10.829470495999999},null,{"$f":"Y69-R69","v":0.65009099999999975},6.386351940758804E-2,null,0.13,null,{"$f":"AF68*AD69","v":10.969493495999998},null,{"$f":"AF69-Y69","v":0.14002299999999934},1.2929810377314256E-2,null,0.13,null,{"$f":"AM68*AK69","v":11.073584495999999},null,{"$f":"AM69-AF69","v":0.10409100000000038},9.4891345747145882E-3]
["Total Bill (including HST)",null,null,null,null,null,{"$f":"G68+G69","v":85.346451967999997},null,null,null,{"$f":"K68+K69","v":109.75816469599999},null,24.411712727999998,0.28603078587441438,null,null,null,{"$f":"R68+R69","v":88.482298695999987},null,-21.275866000000008,-0.19384312828962036,null,null,null,{"$f":"Y68+Y69","v":94.133089695999985},null,5.6507909999999981,6.3863519407588054E-2,null,null,null,{"$f":"AF68+AF69","v":95.350212695999986},null,1.2171230000000008,1.2929810377314326E-2,null,null,null,{"$f":"AM68+AM69","v":96.255003695999989},null,0.90479100000000301,9.4891345747145847E-3]
["Ontario Clean Energy Benefit 1",null,null,null,null,null,null,null,null,null,null,null,0,"",null,null,null,null,null,0,"",null,null,null,null,null,0,"",null,null,null,null,null,0,"",null,null,null,null,null,0,""]
["Total Bill on RPP (including OCEB)",null,null,null,null,null,{"$f":"SUM(G70:G71)","v":85.346451967999997},null,null,null,{"$f":"SUM(K70:K71)","v":109.75816469599999},null,24.411712727999998,0.28603078587441438,null,null,null,{"$f":"SUM(R70:R71)","v":88.482298695999987},null,-21.275866000000008,-0.19384312828962036,null,null,null,{"$f":"SUM(Y70:Y71)","v":94.133089695999985},null,5.6507909999999981,6.3863519407588054E-2,null,null,null,{"$f":"SUM(AF70:AF71)","v":95.350212695999986},null,1.2171230000000008,1.2929810377314326E-2,null,null,null,{"$f":"SUM(AM70:AM71)","v":96.255003695999989},null,0.90479100000000301,9.4891345747145847E-3]
[]
[]
["Loss Factor (%)",null,null,null,3.44E-2,null,null,null,3.9300000000000002E-2,null,null,null,null,null,null,3.9300000000000002E-2,null,null,null,null,null,null,3.9300000000000002E-2,null,null,null,null,null,null,3.9300000000000002E-2,null,null,null,null,null,null,3.9300000000000002E-2]
[]
["Distribution Excluding Rate Riders",null,null,null,"2015 Current Board-Approved",null,null,null,"2016 Test Year 1\nProposed",null,null,null,"Impact\n2016 TEST vs. \n2015 Bridge",null,null,"2017 Test Year 2\nProposed",null,null,null,"Impact\n2017 TEST 2 vs. \n2016 Test 1",null,null,"2018 Test Year 3\nProposed",null,null,null,"Impact\n2018 TEST 3 vs. \n2017 Test 2",null,null,"2019 Test Year 4\nProposed",null,null,null,"Impact\n2019 TEST 4 vs. \n2018 Test 3",null,null,"2020 Test Year 5 \nProposed",null,null,null,"Impact\n2019 TEST 5 vs. \n2019 Test 4"]
[null,null,"Charge Unit",null,"Rate","Volume","Charge",null,"Rate","Volume","Charge",null,"$ Change","% Change",null,"Rate","Volume","Charge",null,"$ Change","% Change",null,"Rate","Volume","Charge",null,"$ Change","% Change",null,"Rate","Volume","Charge",null,"$ Change","% Change",null,"Rate","Volume","Charge",null,"$ Change","% Change"]
[null,null,null,null,"($)",null,"($)",null,"($)",null,"($)",null,null,null,null,"($)",null,"($)",null,null,null,null,"($)",null,"($)",null,null,null,null,"($)",null,"($)",null,null,null,null,"($)",null,"($)"]
["Monthly Service Charge",null,"Monthly",null,{"$f":"'Rates Summary'!$D$33","v":1.02},{"$f":"$E$17","v":15},{"$f":"F80*E80","v":15.3},null,{"$f":"'Rates Summary'!$E$33","v":0.88},{"$f":"$E$17","v":15},{"$f":"J80*I80","v":13.2},null,{"$f":"K80-G80","v":-2.1000000000000014},{"$f":"IF((G80)=0,\"\",(M80/G80))","v":-0.13725490196078441},null,{"$f":"'Rates Summary'!$F$33","v":1.05},{"$f":"$E$17","v":15},{"$f":"Q80*P80","v":15.75},null,{"$f":"R80-K80","v":2.5500000000000007},{"$f":"IF((K80)=0,\"\",(T80/K80))","v":0.19318181818181823},null,{"$f":"'Rates Summary'!$G$33","v":1.24},{"$f":"$E$17","v":15},{"$f":"X80*W80","v":18.600000000000001},null,{"$f":"Y80-R80","v":2.8500000000000014},{"$f":"IF((R80)=0,\"\",(AA80/R80))","v":0.18095238095238103},null,{"$f":"'Rates Summary'!$H$33","v":1.28},{"$f":"$E$17","v":15},{"$f":"AE80*AD80","v":19.2},null,{"$f":"AF80-Y80","v":0.59999999999999787},{"$f":"IF((Y80)=0,\"\",(AH80/Y80))","v":3.2258064516128913E-2},null,{"$f":"'Rates Summary'!$I$33","v":1.31},{"$f":"$E$17","v":15},{"$f":"AL80*AK80","v":19.650000000000002},null,{"$f":"AM80-AF80","v":0.45000000000000284},{"$f":"IF((AF80)=0,\"\",(AO80/AF80))","v":2.3437500000000149E-2}]
["Distribution Volumetric Rate",null,"per kW",null,{"$f":"'Rates Summary'!$D$45","v":4.6749999999999998},{"$f":"$E$19","v":1},{"$f":"F81*E81","v":4.6749999999999998},null,{"$f":"'Rates Summary'!$E$45","v":9.952},{"$f":"$E$19","v":1},{"$f":"J81*I81","v":9.952},null,{"$f":"K81-G81","v":5.2770000000000001},{"$f":"IF((G81)=0,\"\",(M81/G81))","v":1.128770053475936},null,{"$f":"'Rates Summary'!$F$45","v":11.891},{"$f":"$E$19","v":1},{"$f":"Q81*P81","v":11.891},null,1.9390000000000001,{"$f":"IF((K81)=0,\"\",(T81/K81))","v":0.19483520900321544},null,{"$f":"'Rates Summary'!$G$45","v":14.041700000000001},{"$f":"$E$19","v":1},{"$f":"X81*W81","v":14.041700000000001},null,2.1507000000000005,{"$f":"IF((R81)=0,\"\",(AA81/R81))","v":0.18086788327306369},null,{"$f":"'Rates Summary'!$H$45","v":14.518800000000001},{"$f":"$E$19","v":1},{"$f":"AE81*AD81","v":14.518800000000001},null,0.47710000000000008,{"$f":"IF((Y81)=0,\"\",(AH81/Y81))","v":3.3977367412777661E-2},null,{"$f":"'Rates Summary'!$I$45","v":14.8695},{"$f":"$E$19","v":1},{"$f":"AL81*AK81","v":14.8695},null,0.35069999999999979,{"$f":"IF((AF81)=0,\"\",(AO81/AF81))","v":2.4154888833787899E-2}]
["\"Regular\" Distribution Only",null,null,null,null,null,{"$f":"SUM(G80:G81)","v":19.975000000000001},null,null,null,{"$f":"SUM(K80:K81)","v":23.152000000000001},null,3.1769999999999996,0.15904881101376717,null,null,null,{"$f":"SUM(R80:R81)","v":27.640999999999998},null,4.4889999999999972,0.19389253628196254,null,null,null,{"$f":"SUM(Y80:Y81)","v":32.6417},null,5.0007000000000019,0.18091603053435124,null,null,null,{"$f":"SUM(AF80:AF81)","v":33.718800000000002},null,1.0771000000000015,3.299766862632772E-2,null,null,null,{"$f":"SUM(AM80:AM81)","v":34.519500000000001},null,0.80069999999999908,2.3746396668920575E-2]
[]
[]
[null,"Residential (kWh) - 100, 250, 500, 800, 1000, 1500, 2000"]
[null,"GS<50kW (kWh) - 1000, 2000, 5000, 10000, 15000"]
[null,"GS>50kW (kW) - 60, 100, 500, 1000"]
[null,"Large User - range appropriate for utility"]
[null,"Lighting Classes and USL - 150 kWh and 1 kW, range appropriate for utility."]
[]
[null,null,"Note that cells with the highlighted color shown to the left indicate quantities that are loss adjusted."]

{"sheet":"Consumption Levels","index":25,"n_rows":10,"n_cols":16,"rows_kept":10,"cut":false,"hidden":false,"merged":[]}
[]
[null,"kWh",null,"kWh",null,"kW","kWh",null,"kW","kWh",null,"kWh",null,"Lights","kW","kWh"]
["Residential",204,"GS<50 kW",2000,"GS 50 to 4999",60,40000,"Large Use",8000,5000000,"USL",750,"Street Lights",5000,375,150000]
["Residential",100,"GS<50 kW",1000,"GS 50 to 4999",100,70000,"Large Use",5500,3450000,"USL",150,"Street Lights",15,1,400]
["Residential",250,"GS<50 kW",5000,"GS 50 to 4999",500,350000]
["Residential",500,"GS<50 kW",10000,"GS 50 to 4999",1000,800000]
["Residential",800,"GS<50 kW",15000]
["Residential",1000]
["Residential",1500]
["Residential",2000]

{"sheet":"App. 2-Z_2016 Tariff","index":26,"n_rows":570,"n_cols":4,"rows_kept":570,"cut":false,"hidden":false,"merged":[[128,0,128,1],[129,0,129,1],[130,0,130,1],[131,0,131,1],[132,0,132,1],[133,0,133,1],[160,0,160,1],[161,0,161,1],[162,0,162,1],[137,0,137,1],[138,0,138,1],[163,0,163,1],[139,0,139,1],[210,0,210,1],[202,0,202,1],[205,0,205,1],[203,0,203,1],[204,0,204,1],[177,0,177,1],[169,0,169,1],[167,0,167,1],[168,0,168,1],[170,0,170,1],[171,0,171,1],[155,0,155,1],[166,0,166,1],[164,0,164,1],[165,0,165,1],[2,2,2,3],[1,2,1,3],[3,2,3,3],[19,0,19,3],[36,0,36,3],[37,0,37,3],[6,2,6,3],[4,2,4,3],[78,0,78,1],[40,0,40,3],[41,0,41,3],[42,0,42,3],[20,0,20,3],[21,0,21,3],[22,0,22,3],[23,0,23,3],[24,0,24,3],[25,0,25,3],[7,0,7,3],[44,0,44,3],[46,0,46,3],[49,0,49,3],[38,0,38,3],[77,0,77,1],[118,0,118,1],[119,0,119,1],[120,0,120,1],[111,0,111,1],[89,0,89,1],[81,0,81,1],[82,0,82,1],[99,0,99,3],[115,0,115,1],[116,0,116,1],[117,0,117,1],[106,0,106,1],[107,0,107,1],[108,0,108,1],[126,0,126,1],[127,0,127,1],[0,2,0,3],[9,0,9,3],[10,0,10,3],[12,0,12,1],[14,0,14,3],[18,0,18,3],[17,0,17,3],[59,0,59,1],[76,0,76,1],[64,0,64,1],[60,0,60,1],[61,0,61,1],[62,0,62,1],[63,0,63,1],[71,0,71,1],[72,0,72,1],[50,0,50,3],[51,0,51,3],[74,0,74,1],[75,0,75,1],[57,0,57,1],[58,0,58,1],[52,0,52,3],[56,0,56,1],[110,0,110,1],[97,0,97,3],[98,0,98,3],[68,0,68,1],[69,0,69,1],[70,0,70,1],[100,0,100,3],[104,0,104,1],[105,0,105,1],[83,0,83,1],[73,0,73,1],[94,0,94,3],[79,0,79,1],[80,0,80,1],[90,0,90,1],[91,0,91,1],[92,0,92,3],[109,0,109,1],[233,0,233,1],[234,0,234,1],[235,0,235,1],[260,0,260,1],[261,0,261,1],[262,0,262,1],[263,0,263,1],[249,0,249,1],[276,0,276,1],[267,0,267,1],[268,0,268,1],[269,0,269,1],[270,0,270,1],[236,0,236,3],[238,0,238,3],[241,0,241,3],[242,0,242,3],[243,0,243,3],[244,0,244,3],[264,0,264,1],[259,0,259,1],[250,0,250,1],[251,0,251,1],[252,0,252,1],[216,0,216,1],[176,0,176,1],[200,0,200,1],[201,0,201,1],[186,0,186,1],[187,0,187,1],[206,0,206,1],[207,0,207,1],[208,0,208,1],[209,0,209,1],[185,0,185,1],[180,0,180,1],[178,0,178,1],[179,0,179,1],[181,0,181,1],[193,0,193,3],[194,0,194,3],[195,0,195,3],[196,0,196,3],[212,0,212,1],[213,0,213,1],[214,0,214,1],[215,0,215,1],[211,0,211,1],[217,0,217,1],[218,0,218,1],[219,0,219,1],[220,0,220,1],[221,0,221,1],[222,0,222,1],[225,0,225,1],[226,0,226,1],[227,0,227,1],[223,0,223,1],[224,0,224,1],[253,0,253,1],[254,0,254,1],[265,0,265,1],[266,0,266,1],[65,0,65,1],[66,0,66,1],[67,0,67,1],[147,0,147,3],[148,0,148,3],[152,0,152,1],[153,0,153,1],[154,0,154,1],[113,0,113,1],[122,0,122,1],[140,0,140,3],[142,0,142,3],[145,0,145,3],[146,0,146,3],[124,0,124,1],[125,0,125,1],[114,0,114,1],[123,0,123,1],[84,0,84,1],[85,0,85,1],[255,0,255,1],[256,0,256,1],[257,0,257,1],[258,0,258,1],[272,0,272,1],[273,0,273,1],[274,0,274,1],[275,0,275,1],[112,0,112,1],[156,0,156,1],[157,0,157,1],[158,0,158,1],[159,0,159,1],[188,0,188,3],[190,0,190,3],[172,0,172,1],[173,0,173,1],[174,0,174,1],[175,0,175,1],[121,0,121,1],[228,0,228,1],[229,0,229,1],[248,0,248,1],[271,0,271,1],[304,0,304,1],[305,0,305,1],[306,0,306,1],[277,0,277,1],[284,0,284,3],[286,0,286,3],[289,0,289,3],[290,0,290,3],[291,0,291,3],[292,0,292,3],[298,0,298,1],[299,0,299,1],[300,0,300,1],[301,0,301,1],[302,0,302,1],[303,0,303,1],[296,0,296,1],[297,0,297,1],[281,0,281,1],[282,0,282,1],[283,0,283,1],[307,0,307,1],[308,0,308,1],[309,0,309,1],[310,0,310,1],[311,0,311,1],[312,0,312,1],[313,0,313,1],[314,0,314,1],[315,0,315,1],[316,0,316,1],[317,0,317,1],[318,0,318,1],[319,0,319,1],[320,0,320,1],[321,0,321,1],[322,0,322,1],[323,0,323,1],[324,0,324,1],[349,0,349,1],[350,0,350,1],[351,0,351,1],[325,0,325,1],[329,0,329,1],[330,0,330,1],[331,0,331,1],[332,0,332,3],[334,0,334,3],[337,0,337,3],[340,0,340,3],[344,0,344,1],[345,0,345,1],[346,0,346,1],[347,0,347,1],[348,0,348,1],[338,0,338,3],[339,0,339,3],[352,0,352,1],[353,0,353,1],[354,0,354,1],[355,0,355,1],[356,0,356,1],[357,0,357,1],[358,0,358,1],[359,0,359,1],[360,0,360,1],[361,0,361,1],[362,0,362,1],[363,0,363,1],[364,0,364,1],[365,0,365,1],[366,0,366,1],[367,0,367,1],[368,0,368,1],[369,0,369,1],[394,0,394,1],[395,0,395,1],[396,0,396,1],[370,0,370,1],[371,0,371,1],[372,0,372,1],[373,0,373,1],[377,0,377,1],[378,0,378,1],[379,0,379,1],[385,0,385,3],[386,0,386,3],[387,0,387,3],[388,0,388,3],[392,0,392,1],[393,0,393,1],[380,0,380,3],[382,0,382,3],[397,0,397,1],[398,0,398,1],[399,0,399,1],[400,0,400,1],[401,0,401,1],[402,0,402,1],[403,0,403,1],[404,0,404,1],[405,0,405,1],[406,0,406,1],[407,0,407,1],[408,0,408,1],[409,0,409,1],[410,0,410,1],[411,0,411,1],[412,0,412,1],[413,0,413,1],[414,0,414,1],[442,4,442,7],[444,0,444,3],[444,4,444,7],[415,0,415,1],[416,0,416,1],[417,0,417,1],[418,0,418,1],[419,0,419,1],[420,0,420,1],[421,0,421,1],[425,0,425,1],[426,0,426,1],[454,0,454,1],[455,0,455,1],[456,0,456,1],[427,0,427,1],[431,0,431,1],[432,0,432,1],[433,0,433,1],[434,0,434,1],[440,0,440,3],[442,0,442,3],[448,0,448,1],[449,0,449,1],[450,0,450,1],[451,0,451,1],[452,0,452,1],[453,0,453,1],[457,0,457,1],[458,0,458,1],[459,0,459,1],[460,0,460,1],[461,0,461,1],[462,0,462,1],[463,0,463,1],[464,0,464,1],[465,0,465,1],[466,0,466,1],[467,0,467,1],[468,0,468,1],[469,0,469,1],[470,0,470,1],[471,0,471,1],[472,0,472,1],[473,0,473,1],[474,0,474,1],[493,0,493,1],[494,0,494,1],[495,0,495,1],[475,0,475,1],[476,0,476,1],[477,0,477,1],[478,0,478,1],[479,0,479,1],[480,0,480,1],[481,0,481,1],[487,0,487,1],[488,0,488,1],[489,0,489,1],[490,0,490,1],[491,0,491,1],[492,0,492,1],[482,0,482,1],[486,0,486,1],[496,0,496,1],[497,0,497,1],[498,0,498,1],[499,0,499,1],[500,0,500,1],[501,0,501,1],[502,0,502,1],[503,0,503,1],[504,0,504,1],[505,0,505,1],[506,0,506,1],[507,0,507,1],[508,0,508,1],[509,0,509,1],[510,0,510,1],[513,0,513,1],[514,0,514,1],[515,0,515,1],[516,0,516,1],[517,0,517,1],[518,0,518,1],[519,0,519,1],[520,0,520,1],[521,0,521,1],[522,0,522,1],[523,0,523,1],[524,0,524,1],[525,0,525,1],[526,0,526,1],[527,0,527,1],[528,0,528,1],[529,0,529,1],[530,0,530,1],[531,0,531,1],[532,0,532,1],[533,0,533,1],[537,0,537,3],[537,4,537,7],[538,0,538,3],[538,4,538,7],[539,0,539,3],[539,4,539,7],[540,0,540,3],[540,4,540,7],[541,0,541,3],[541,4,541,7],[542,0,542,3],[542,4,542,7],[543,0,543,3],[543,4,543,7],[544,0,544,3],[544,4,544,7],[545,0,545,3],[545,4,545,7],[547,0,547,1],[547,4,547,5],[548,0,548,1],[549,0,549,1],[550,0,550,1],[551,0,551,1],[552,0,552,1],[553,0,553,1],[554,0,554,1],[555,0,555,1],[556,0,556,1],[570,0,570,1],[571,0,571,1],[557,0,557,1],[558,0,558,1],[559,0,559,1],[563,0,563,3],[563,4,563,7],[566,0,566,1],[567,0,567,1],[568,0,568,1],[569,0,569,1]]}
[null,"File Number:",{"$f":"EBNUMBER","v":"EB-2015-0083"}]
[null,"Exhibit:"]
[null,"Tab:"]
[null,"Schedule:"]
[null,"Page:"]
[]
[null,"Date:"]
["Appendix 2-Z\nProposed Tariff of Rates and Charges"]
[]
["For each class, Applicants are required to copy and paste the class descriptions (located directly under the class name) and the description of the applicability of those rates (description is found under the class name and directly under the word \"APPLICATION\").  By using the drop-down lists located under the column labeled \"Rate Description\", please select the descriptions of the rates and charges that BEST MATCHES the descriptions on your most recent Board-Approved Tariff of Rates and Charges.  If the description is not found in the drop-down list, please enter the description in the green shaded cells under the correct class exactly as it appears on the tariff.   Please do not enter more than one \"Service Charge\" for each class for which a base monthly fixed charge applies.  All rate rider descriptions should begin with \"Rate Rider for...\"."]
["Select the appropriate rate classes as they appear on your most recent Board-Approved Tariff of Rates and Charges, including the MicroFit Class."]
[]
["How many classes are listed on your most recent Board-Approved Tariff of Rates and Charges?",null,8]
[]
["Identify Your Rate Classes in the Blue Cells below.  Rate class names can be selected from the pull-dwon menu.  Please ensure that a rate class is assigned to each shaded cell.\n"]
[]
[]
["List of Rate Classes"]
["RESIDENTIAL"]
["GENERAL SERVICE LESS THAN 50 KW"]
["GENERAL SERVICE 50 TO 4,999 KW"]
["LARGE USE"]
["UNMETERED SCATTERED LOAD"]
["STANDBY POWER"]
["STREET LIGHTING"]
["MicroFIT"]
[]
[]
[]
[]
[]
[]
[]
[]
["Once all blue shaded cells above are filled out, press the following button to create your tariff template"]
[]
[{"$f":"'[2]LDC Info'!E14","v":"Kingston Hydro Corporation"}]
["TARIFF OF RATES AND CHARGES"]
[{"$f":"\"Effective and Implementation Date January 1, 2016\"","v":"Effective and Implementation Date January 1, 2016"}]
[]
["This schedule supersedes and replaces all previously"]
["approved schedules of Rates, Charges and Loss Factors"]
[{"$f":"EBNUMBER","v":"EB-2015-0083"}]
[]
["RESIDENTIAL SERVICE CLASSIFICATION"]
[]
["This classification applies to an account taking electricity at 750 volts or less where the electricity is used exclusively in a separate metered living accommodation. Customers shall be residing in single-dwelling units that consist of a detached house or one unit of a semi-detached, duplex, triplex or quadruplex house, with a residential zoning. Separately metered dwellings within a town house complex or apartment building also qualify as residential customers. All customers are single-phase. Further servicing details are available in the distributor's Conditions of Service."]
["APPLICATION"]
[]
["The application of these rates and charges shall be in accordance with the Licence of the Distributor and any Code or Order of the Board, and amendments thereto as approved by the Board, which may be applicable to the administration of this schedule."]
["No rates and charges for the distribution of electricity and charges to meet the costs of any work or service done or furnished for the purpose of the distribution of electricity shall be made except as permitted by this schedule, unless required by the Distributor's Licence or a Code or Order of the Board, and amendments thereto as approved by the Board, or as specified herein."]
["Unless specifically noted, this schedule does not contain any charges for the electricity commodity, be it under the Regulated Price Plan, a contract with a retailer or the wholesale market price, as applicable. In addition, the charges in the MONTHLY RATES AND CHARGES - Regulatory Component of this schedule do not apply to a customer that is an embedded wholesale market participant."]
["It should be noted that this schedule does not list any changes, assessments or credits that are required by law to be invoiced by a distributor and that are not subject to Board approval, such as the Debt Retirement Charge, the Global Adjustment, the Ontario Clean Energy Benefit and the HST."]
[]
["MONTHLY RATES AND CHARGES - Delivery Component"]
[]
["Service Charge",null,"$",{"$f":"'Rates Summary'!$E$28","v":13.98}]
["Rate Rider for Smart Metering Entity Charge - effective until October 31, 2018",null,"$",{"$f":"'Rates Summary'!$C$16","v":0.78800000000000003}]
["Rate Rider for Disposition of Smart Meter Capital (2016) - effective until December 31, 2016",null,"$",{"$f":"'Rates Summary'!$C$10","v":0.25}]
["Rate Rider for Disposition of Stranded Meter Costs (2016) - effective until December 31, 2016",null,"$",{"$f":"'Rates Summary'!$C$11","v":3.69}]
["Distribution Volumetric Rate",null,"$/kWh",{"$f":"'Rates Summary'!$E$40","v":1.3899999999999999E-2}]
["Low Voltage Service Rate",null,"$/kWh",{"$f":"'Rates Summary'!$C$15","v":1.1999999999999999E-3}]
["Retail Transmission Rate - Network Service Rate",null,"$/kWh",{"$f":"'Rates Summary'!$C$17","v":7.1000000000000004E-3}]
["Retail Transmission Rate - Line and Transformation Connection Service Rate",null,"$/kWh",{"$f":"'Rates Summary'!$C$18","v":5.5999999999999999E-3}]
["Rate Rider for Application of Tax Change (2015) - effective until April 30, 2016",null,"$/kWh",-1E-4]
["Rate Rider for Disposition of Global Adjustment Account (2015) - effective until April 30, 2016       Applicable Only for Non-RPP Customers",null,"$/kWh",1.5599999999999999E-2]
["Rate Rider for Disposition of Global Adjustment Account (2016) \n- effective May 1, 2016 until December 31, 2016. Applicable Only for Non-RPP Customers",null,"$/kWh",{"$f":"'Rates Summary'!$C$6","v":2.0500000000000001E-2}]
["Rate Rider for Disposition of Deferral/Variance Accounts (2016) - effective until December 31, 2016 ",null,"$/kWh",{"$f":"'Rates Summary'!$C$5","v":6.9999999999999999E-4}]
["Rate Rider for Incremental Capital Costs -True-Up (2016) - effective until December 31, 2016",null,"$/kWh",{"$f":"'Rates Summary'!$C$9","v":4.0000000000000002E-4}]
["Rate Rider for Disposition of CGAAP Accounting Changes (2016) -    effective until December 31, 2016",null,"$/kWh",{"$f":"'Rates Summary'!$C$8","v":-1.0800000000000001E-2}]
["Rate Rider for Recovery of Lost Revenue Adjustment Mechanism Variance Account (LRAMVA) (2016) - effective until December 31, 2016",null,"$/kWh",{"$f":"'Rates Summary'!$C$7","v":2.9999999999999997E-4}]
[]
[]
[]
[]
[]
[]
[]
[]
[]
[]
[]
[]
[]
[]
[]
[]
["MONTHLY RATES AND CHARGES - Regulatory Component"]
[]
["Wholesale Market Service Rate",null,"$/kWh",{"$f":"'Rates Summary'!$C$19","v":4.4000000000000003E-3}]
["Rural Rate Protection Charge",null,"$/kWh",{"$f":"'Rates Summary'!$C$20","v":1.2999999999999999E-3}]
["Standard Supply Service - Administrative Charge (if applicable)",null,"$",{"$f":"'Rates Summary'!$C$21","v":0.25}]
["GENERAL SERVICE LESS THAN 50 KW SERVICE CLASSIFICATION"]
[]
["This classification refers to a non residential account taking electricity at 750 volts or less whose monthly average peak demand is less than, or is forecast to be less than, 50 kW. Further servicing details are available in the distributor's Conditions of Service."]
["APPLICATION"]
[]
["The application of these rates and charges shall be in accordance with the Licence of the Distributor and any Code or Order of the Board, and amendments thereto as approved by the Board, which may be applicable to the administration of this schedule."]
["Unless specifically noted, this schedule does not contain any charges for the electricity commodity, be it under the Regulated Price Plan, a contract with a retailer or the wholesale market price, as applicable. In addition, the charges in the MONTHLY RATES AND CHARGES - Regulatory Component of this schedule do not apply to a customer that is an embedded wholesale market participant."]
["Unless specifically noted, this schedule does not contain any charges for the electricity commodity, be it under the Regulated Price Plan, a contract with a retailer or the wholesale market price, as applicable. In addition, the charges in the MONTHLY RATES AND CHARGES - Regulatory Component of this schedule do not apply to a customer that is an embedded wholesale market participant."]
["It should be noted that this schedule does not list any changes, assessments or credits that are required by law to be invoiced by a distributor and that are not subject to Board approval, such as the Debt Retirement Charge, the Global Adjustment, the Ontario Clean Energy Benefit and the HST."]
[]
["MONTHLY RATES AND CHARGES - Delivery Component"]
[]
["Service Charge",null,"$",{"$f":"'Rates Summary'!$E$29","v":14.27}]
["Rate Rider for Smart Metering Entity Charge - effective until October 31, 2018",null,"$",{"$f":"'Rates Summary'!$D$16","v":0.78800000000000003}]
["Rate Rider for Disposition of Smart Meter Capital (2016) - effective until December 31, 2016",null,"$",{"$f":"'Rates Summary'!$D$10","v":0.43}]
["Rate Rider for Disposition of Stranded Meter Costs (2016) - effective until December 31, 2016",null,"$",{"$f":"'Rates Summary'!$D$11","v":6.4}]
["Distribution Volumetric Rate",null,"$/kWh",{"$f":"'Rates Summary'!$E$41","v":1.46E-2}]
["Low Voltage Service Rate",null,"$/kWh",{"$f":"'Rates Summary'!$D$15","v":1.1000000000000001E-3}]
["Retail Transmission Rate - Network Service Rate",null,"$/kWh",{"$f":"'Rates Summary'!$D$17","v":6.3E-3}]
["Retail Transmission Rate - Line and Transformation Connection Service Rate",null,"$/kWh",{"$f":"'Rates Summary'!$D$18","v":5.1000000000000004E-3}]
["Rate Rider for Application of Tax Change (2015) - effective until April 30, 2016",null,"$/kWh",-1E-4]
["Rate Rider for Disposition of Global Adjustment Account (2015) - effective until April 30, 2016       Applicable Only for Non-RPP Customers ",null,"$/kWh",1.5599999999999999E-2]
["Rate Rider for Disposition of Global Adjustment Account (2016) \n- effective May 1, 2016 until December 31, 2016. Applicable Only for Non-RPP Customers",null,"$/kWh",{"$f":"'Rates Summary'!$D$6","v":2.0500000000000001E-2}]
["Rate Rider for Disposition of Deferral/Variance Accounts (2016) - effective until December 31, 2016 ",null,"$/kWh",{"$f":"'Rates Summary'!$D$5","v":-6.9999999999999999E-4}]
["Rate Rider for Incremental Capital Costs -True-Up (2016) - effective until December 31, 2016",null,"$/kWh",{"$f":"'Rates Summary'!$D$9","v":2.0000000000000001E-4}]
["Rate Rider for Disposition of CGAAP Accounting Changes (2016) -    effective until December 31, 2016",null,"$/kWh",{"$f":"'Rates Summary'!$D$8","v":-6.1999999999999998E-3}]
["Rate Rider for Recovery of Lost Revenue Adjustment Mechanism Variance Account (LRAMVA) (2016) - effective until December 31, 2016",null,"$/kWh",{"$f":"'Rates Summary'!$D$7","v":8.0000000000000004E-4}]
[]
[]
[]
[]
[]
[]
[]
[]
[]
[]
[]
[]
[]
[]
[]
[]
["MONTHLY RATES AND CHARGES - Regulatory Component"]
[]
["Wholesale Market Service Rate",null,"$/kWh",{"$f":"'Rates Summary'!$D$19","v":4.4000000000000003E-3}]
["Rural Rate Protection Charge",null,"$/kWh",{"$f":"'Rates Summary'!$D$20","v":1.2999999999999999E-3}]
["Standard Supply Service - Administrative Charge (if applicable)",null,"$",{"$f":"'Rates Summary'!$D$21","v":0.25}]
["GENERAL SERVICE 50 TO 4,999 KW SERVICE CLASSIFICATION"]
[]
["This classification refers to a non residential account whose monthly average peak demand is equal to or greater than, or is forecast to be equal to or greater than, 50 kW but less than 5,000 kW. Further servicing details are available in th distributor's Conditions of Service."]
["APPLICATION"]
[]
["The application of these rates and charges shall be in accordance with the Licence of the Distributor and any Code or Order of the Board, and amendments thereto as approved by the Board, which may be applicable to the administration of this schedule."]
["No rates and charges for the distribution of electricity and charges to meet the costs of any work or service done or furnished for the purpose of the distribution of electricity shall be made except as permitted by this schedule, unless required by the Distributor's Licence or a Code or Order of the Board, and amendments thereto as approved by the Board, or as specified herein."]
["Unless specifically noted, this schedule does not contain any charges for the electricity commodity, be it under the Regulated Price Plan, a contract with a retailer or the wholesale market price, as applicable. In addition, the charges in the MONTHLY RATES AND CHARGES - Regulatory Component of this schedule do not apply to a customer that is an embedded wholesale market participant."]
["It should be noted that this schedule does not list any changes, assessments or credits that are required by law to be invoiced by a distributor and that are not subject to Board approval, such as the Debt Retirement Charge, the Global Adjustment, the Ontario Clean Energy Benefit and the HST."]
[]
["MONTHLY RATES AND CHARGES - Delivery Component"]
[]
["Service Charge",null,"$",{"$f":"'Rates Summary'!$E$30","v":105.62}]
["Distribution Volumetric Rate",null,"$/kW",{"$f":"'Rates Summary'!$E$42","v":2.9849000000000001}]
["Low Voltage Service Rate",null,"$/kW",{"$f":"'Rates Summary'!$E$15","v":0.46629999999999999}]
["Retail Transmission Rate - Network Service Rate",null,"$/kW",{"$f":"'Rates Summary'!$E$17","v":2.7797000000000001}]
["Retail Transmission Rate - Line and Transformation Connection Service Rate",null,"$/kW",{"$f":"'Rates Summary'!$E$18","v":2.2225000000000001}]
["Rate Rider for Application of Tax Change (2015) - effective until April 30, 2016",null,"$/kW",-9.9000000000000008E-3]
["Rate Rider for Disposition of Global Adjustment Account (2015) - effective until April 30, 2016       Applicable Only for Non-RPP Customers, excluding Wholesale Market Participants",null,"$/kW",5.7342000000000004]
["Rate Rider for Disposition of Global Adjustment Account (2016) - effective May 1, 2016 until December 31, 2016. Applicable Only for Non-RPP Customers, excluding Wholesale Market Participants",null,"$/kW",{"$f":"'Rates Summary'!$J$6","v":7.4691999999999998}]
["Rate Rider for Disposition of Deferral/Variance Accounts (2016) - effective until December 31, 2016 ",null,"$/kW",{"$f":"'Rates Summary'!$E$5","v":0.70479999999999998}]
["Rate Rider for Disposition of Deferral/Variance Accounts (2016) - effective until December 31, 2016 excluding Wholesale Market Participants",null,"$/kW",{"$f":"'Rates Summary'!$J$5","v":-1.0947}]
["Rate Rider for Incremental Capital Costs -True-Up (2016) - effective until December 31, 2016",null,"$/kW",{"$f":"'Rates Summary'!$E$9","v":0.04}]
["Rate Rider for Disposition of CGAAP Accounting Changes (2016) -    effective until December 31, 2016",null,"$/kW",{"$f":"'Rates Summary'!$E$8","v":-1.0874999999999999}]
["Rate Rider for Recovery of Lost Revenue Adjustment Mechanism Variance Account (LRAMVA) (2016) - effective until December 31, 2016",null,"$/kW",{"$f":"'Rates Summary'!$E$7","v":2.93E-2}]
[]
[]
[]
[]
[]
[]
[]
[]
[]
[]
[]
[]
[]
[]
[]
[]
[]
[]
["MONTHLY RATES AND CHARGES - Regulatory Component"]
[]
["Wholesale Market Service Rate",null,"$/kWh",{"$f":"'Rates Summary'!$E$19","v":4.4000000000000003E-3}]
["Rural Rate Protection Charge",null,"$/kWh",{"$f":"'Rates Summary'!$E$20","v":1.2999999999999999E-3}]
["Standard Supply Service - Administrative Charge (if applicable)",null,"$",{"$f":"'Rates Summary'!$E$21","v":0.25}]
["LARGE USE SERVICE CLASSIFICATION"]
[]
["This classification refers to an account whose monthly average peak demand is equal to or greater than, or is forecast to be equal to or greater than, 5,000 kW. Further servicing details are available in the distributor's Conditions of Service."]
["APPLICATION"]
[]
["The application of these rates and charges shall be in accordance with the Licence of the Distributor and any Code or Order of the Board, and amendments thereto as approved by the Board, which may be applicable to the administration of this schedule."]
["No rates and charges for the distribution of electricity and charges to meet the costs of any work or service done or furnished for the purpose of the distribution of electricity shall be made except as permitted by this schedule, unless required by the Distributor's Licence or a Code or Order of the Board, and amendments thereto as approved by the Board, or as specified herein."]
["Unless specifically noted, this schedule does not contain any charges for the electricity commodity, be it under the Regulated Price Plan, a contract with a retailer or the wholesale market price, as applicable. In addition, the charges in the MONTHLY RATES AND CHARGES - Regulatory Component of this schedule do not apply to a customer that is an embedded wholesale market participant."]
["It should be noted that this schedule does not list any changes, assessments or credits that are required by law to be invoiced by a distributor and that are not subject to Board approval, such as the Debt Retirement Charge, the Global Adjustment, the Ontario Clean Energy Benefit and the HST."]
[]
["MONTHLY RATES AND CHARGES - Delivery Component"]
[]
["Service Charge",null,"$",{"$f":"'Rates Summary'!$E$31","v":5164}]
["Distribution Volumetric Rate",null,"$/kW",{"$f":"'Rates Summary'!$E$43","v":1.1548}]
["Low Voltage Service Rate",null,"$/kW",{"$f":"'Rates Summary'!$F$15","v":0.56189999999999996}]
["Retail Transmission Rate - Network Service Rate",null,"$/kW",{"$f":"'Rates Summary'!$F$17","v":3.3492000000000002}]
["Retail Transmission Rate - Line and Transformation Connection Service Rate",null,"$/kW",{"$f":"'Rates Summary'!$F$18","v":2.6779999999999999}]
["Rate Rider for Application of Tax Change (2015) - effective until April 30, 2016",null,"$/kW",-4.4999999999999997E-3]
["Rate Rider for Disposition of Deferral/Variance Accounts (2016) - effective until December 31, 2016 ",null,"$/kW",{"$f":"'Rates Summary'!$F$5","v":-0.56030000000000002}]
["Rate Rider for Incremental Capital Costs -True-Up (2016) - effective until December 31, 2016",null,"$/kW",{"$f":"'Rates Summary'!$F$9","v":2.0299999999999999E-2}]
["Rate Rider for Disposition of CGAAP Accounting Changes (2016) -    effective until December 31, 2016",null,"$/kW",{"$f":"'Rates Summary'!$F$8","v":-0.55130000000000001}]
["Rate Rider for Recovery of Lost Revenue Adjustment Mechanism Variance Account (LRAMVA) (2016) - effective until December 31, 2016",null,"$/kW",{"$f":"'Rates Summary'!$F$7","v":2.6800000000000001E-2}]
[]
[]
[]
[]
[]
[]
[]
[]
[]
[]
[]
[]
[]
[]
[]
[]
[]
[]
[]
[]
[]
["MONTHLY RATES AND CHARGES - Regulatory Component"]
[]
["Wholesale Market Service Rate",null,"$/kWh",{"$f":"'Rates Summary'!$F$19","v":4.4000000000000003E-3}]
["Rural Rate Protection Charge",null,"$/kWh",{"$f":"'Rates Summary'!$F$20","v":1.2999999999999999E-3}]
["Standard Supply Service - Administrative Charge (if applicable)",null,"$",{"$f":"'Rates Summary'!$F$21","v":0.25}]
["UNMETERED SCATTERED LOAD SERVICE CLASSIFICATION"]
[]
["This classification refers to an account taking electricity at 750 volts or less whose monthly average peak demand is less than, or is forecast to be less than, 50 kW and the consumption is unmetered. Such connections include cable TV power packs, bus shelters, telephone booths, traffic lights, railway crossings, etc. The customer will provide detailed manufacturer information/documentation with regard to electrical demand/consumption of the proposed unmetered load. Further servicing details are available in the distributor's Conditons of Service."]
["APPLICATION"]
[]
["The application of these rates and charges shall be in accordance with the Licence of the Distributor and any Code or Order of the Board, and amendments thereto as approved by the Board, which may be applicable to the administration of this schedule."]
["No rates and charges for the distribution of electricity and charges to meet the costs of any work or service done or furnished for the purpose of the distribution of electricity shall be made except as permitted by this schedule, unless required by the Distributor's Licence or a Code or Order of the Board, and amendments thereto as approved by the Board, or as specified herein."]
["Unless specifically noted, this schedule does not contain any charges for the electricity commodity, be it under the Regulated Price Plan, a contract with a retailer or the wholesale market price, as applicable. In addition, the charges in the MONTHLY RATES AND CHARGES - Regulatory Component of this schedule do not apply to a customer that is an embedded wholesale market participant."]
["It should be noted that this schedule does not list any changes, assessments or credits that are required by law to be invoiced by a distributor and that are not subject to Board approval, such as the Debt Retirement Charge, the Global Adjustment, the Ontario Clean Energy Benefit and the HST."]
[]
["MONTHLY RATES AND CHARGES - Delivery Component"]
[]
["Service Charge (per customer)",null,"$",{"$f":"'Rates Summary'!$E$32","v":5.78}]
["Distribution Volumetric Rate",null,"$/kWh",{"$f":"'Rates Summary'!$E$44","v":1.15E-2}]
["Low Voltage Service Rate",null,"$/kWh",{"$f":"'Rates Summary'!$G$15","v":1.1999999999999999E-3}]
["Retail Transmission Rate - Network Service Rate",null,"$/kWh",{"$f":"'Rates Summary'!$G$17","v":7.1000000000000004E-3}]
["Retail Transmission Rate - Line and Transformation Connection Service Rate",null,"$/kWh",{"$f":"'Rates Summary'!$G$18","v":5.5999999999999999E-3}]
["Rate Rider for Application of Tax Change (2015) - effective until April 30, 2016",null,"$/kWh",-1E-4]
["Rate Rider for Disposition of Global Adjustment Account (2015) - effective until April 30, 2016       Applicable Only for Non-RPP Customers",null,"$/kWh",1.5599999999999999E-2]
["Rate Rider for Disposition of Global Adjustment Account (2016) \n- effective May 1, 2016 until December 31, 2016. Applicable Only for Non-RPP Customers",null,"$/kWh",{"$f":"'Rates Summary'!$G$6","v":2.0500000000000001E-2}]
["Rate Rider for Disposition of Deferral/Variance Accounts (2016) - effective until December 31, 2016 ",null,"$/kWh",{"$f":"'Rates Summary'!$G$5","v":2.9999999999999997E-4}]
["Rate Rider for Disposition of CGAAP Accounting Changes (2016) -    effective until December 31, 2016",null,"$/kWh",{"$f":"'Rates Summary'!$G$8","v":-6.0000000000000001E-3}]
["Rate Rider for Incremental Capital Costs -True-Up (2016) - effective until December 31, 2016",null,"$/kWh",{"$f":"'Rates Summary'!$G$9","v":2.0000000000000001E-4}]
[]
[]
[]
[]
[]
[]
[]
[]
[]
[]
[]
[]
[]
[]
[]
[]
[]
[]
[]
[]
["MONTHLY RATES AND CHARGES - Regulatory Component"]
[]
["Wholesale Market Service Rate",null,"$/kWh",{"$f":"'Rates Summary'!$G$19","v":4.4000000000000003E-3}]
["Rural Rate Protection Charge",null,"$/kWh",{"$f":"'Rates Summary'!$H$20","v":1.2999999999999999E-3}]
["Standard Supply Service - Administrative Charge (if applicable)",null,"$",{"$f":"'Rates Summary'!$H$21","v":0.25}]
["STANDBY POWER on a FINAL BASIS SERVICE CLASSIFICATION"]
[]
["This classification refers to an account that has Load Displacement Generation and requires Kingston Hydro Corporation to provide back-up service. Further servicing details are available in the distributors's Conditions of Service."]
["APPLICATION"]
[]
["The application of these rates and charges shall be in accordance with the Licence of the Distributor and any Code or Order of the Board, and amendments thereto as approved by the Board, which may be applicable to the administration of this schedule."]
["No rates and charges for the distribution of electricity and charges to meet the costs of any work or service done or furnished for the purpose of the distribution of electricity shall be made except as permitted by this schedule, unless required by the Distributor's Licence or a Code or Order of the Board, and amendments thereto as approved by the Board, or as specified herein."]
["Unless specifically noted, this schedule does not contain any charges for the electricity commodity, be it under the Regulated Price Plan, a contract with a retailer or the wholesale market price, as applicable. In addition, the charges in the MONTHLY RATES AND CHARGES - Regulatory Component of this schedule do not apply to a customer that is an embedded wholesale market participant."]
["It should be noted that this schedule does not list any changes, assessments or credits that are required by law to be invoiced by a distributor and that are not subject to Board approval, such as the Debt Retirement Charge, the Global Adjustment, the Ontario Clean Energy Benefit and the HST."]
[]
["MONTHLY RATES AND CHARGES - Delivery Component"]
[]
["Standby Charges are to be applied to behind-the-meter generators that are not IESO market participants, FIT program participants, net-metered generators or retail generators, which have their own metering and settlement conventions as per regulation and legislation. \n\nStandby Charges are based on applicable applicable monthly General Service < 50kW,  General Service > 50kW to 4,999 kW or Large Use Distribution Volumetric Charges, depending on the rate classification of the generator host facility.\n\nIn the case where utility grade metering is not installed on the generator, Distribution Charges on the generator host facility’s load account will be determined by multiplying the peak hourly delivered load as measured by the load account meter in kW by applicable variable charges for the rate class. Standby Charges are determined by multiplying the nameplate capacity of the behind the meter generator in KW by applicable Standby Power charges in each month. \n\nThis type of scenario is preferable for our customers if the generator is a “baseload” or “24-7-365” generator such as a fuel cell CHP unit or pressure-drop turbine unit. It may also be preferable to the customer where the cost of utility grade metering is high or the size of the generator is very small relative to the demand of the host load customer. \n\nIn the case where utility grade metering is installed on the generator, Distribution Charges on the generator host facility’s load account will be determined by multiplying the peak hourly delivered load as measured by the load account meter in kW by applicable variable charges for the rate class. Standby Charges will be determined by multiplying the peak coincident combined kW delivered by both the distribution system and the generator, less the peak hourly delivered load in kW of the host customer facility as measured by the generator host load account meter.\n\nThis type of scenario is preferable for customers who wish to use generators or electricity storage facilities to participate in provincial conservation initiatives such as the IESO’s Demand Response or Industrial Conservation Initiatives, or reduce kWh consumption to contribute towards Kingston Hydro’s 2020 Conservation Targets, but are not able to operate their generators “24-7-365”.\n"]
[]
[]
[]
[]
[]
[]
[]
[]
[]
[]
[]
[]
[]
[]
[]
[]
[]
[]
[]
[]
[]
[]
[]
[]
[]
[]
[]
[]
[]
[]
["MONTHLY RATES AND CHARGES - Regulatory Component"]
[]
[]
[]
[]
["STREET LIGHTING SERVICE CLASSIFICATION"]
[]
["This classification refers to an account for roadway lighting with a Municipality, Regional Municipality, Ministry of Transportation and private roadway lighting operation, controlled by photo cells. The consumption for these customers will be based on the calculated connected load times the required lighting times established in the approved OEB street lighting load shape template. Further servicing details are available in the distributor's Conditions of Service."]
["APPLICATION"]
[]
["The application of these rates and charges shall be in accordance with the Licence of the Distributor and any Code or Order of the Board, and amendments thereto as approved by the Board, which may be applicable to the administration of this schedule."]
["No rates and charges for the distribution of electricity and charges to meet the costs of any work or service done or furnished for the purpose of the distribution of electricity shall be made except as permitted by this schedule, unless required by the Distributor's Licence or a Code or Order of the Board, and amendments thereto as approved by the Board, or as specified herein."]
["Unless specifically noted, this schedule does not contain any charges for the electricity commodity, be it under the Regulated Price Plan, a contract with a retailer or the wholesale market price, as applicable. In addition, the charges in the MONTHLY RATES AND CHARGES - Regulatory Component of this schedule do not apply to a customer that is an embedded wholesale market participant."]
["It should be noted that this schedule does not list any changes, assessments or credits that are required by law to be invoiced by a distributor and that are not subject to Board approval, such as the Debt Retirement Charge, the Global Adjustment, the Ontario Clean Energy Benefit and the HST."]
[]
["MONTHLY RATES AND CHARGES - Delivery Component"]
[]
["Service Charge (per light)",null,"$",{"$f":"'Rates Summary'!$E$33","v":0.88}]
["Distribution Volumetric Rate",null,"$/kW",{"$f":"'Rates Summary'!$E$45","v":9.952}]
["Low Voltage Service Rate",null,"$/kW",{"$f":"'Rates Summary'!$H$15","v":0.33679999999999999}]
["Retail Transmission Rate - Network Service Rate",null,"$/kW",{"$f":"'Rates Summary'!$H$17","v":2.0078}]
["Retail Transmission Rate - Line and Transformation Connection Service Rate",null,"$/kW",{"$f":"'Rates Summary'!$H$18","v":1.6052999999999999}]
["Rate Rider for Application of Tax Change (2015) - effective until April 30, 2016",null,"$/kW",-2.7799999999999998E-2]
["Rate Rider for Disposition of Global Adjustment Account (2015) - effective until April 30, 2016       Applicable Only for Non-RPP Customers",null,"$/kW",5.5544000000000002]
["Rate Rider for Disposition of Global Adjustment Account (2016) - effective until December 31, 2016 Applicable Only for Non-RPP Customers",null,"$/kW",{"$f":"'Rates Summary'!$H$6","v":7.84}]
["Rate Rider for Disposition of Deferral/Variance Accounts (2016) - effective until December 31, 2016 ",null,"$/kW",{"$f":"'Rates Summary'!$H$5","v":14.8985}]
["Rate Rider for Incremental Capital Costs -True-Up (2016) - effective until December 31, 2016",null,"$/kW",{"$f":"'Rates Summary'!$H$9","v":0.246}]
["Rate Rider for Disposition of CGAAP Accounting Changes (2016) -    effective until December 31, 2016",null,"$/kW",{"$f":"'Rates Summary'!$H$8","v":-6.6951999999999998}]
["Rate Rider for Recovery of Lost Revenue Adjustment Mechanism Variance Account (LRAMVA) (2016) - effective until December 31, 2016",null,"$/kW",{"$f":"'Rates Summary'!$H$7","v":7.0278999999999998}]
[]
[]
[]
[]
[]
[]
[]
[]
[]
[]
[]
[]
[]
[]
[]
[]
[]
[]
[]
["MONTHLY RATES AND CHARGES - Regulatory Component"]
[]
["Wholesale Market Service Rate",null,"$/kWh",{"$f":"'Rates Summary'!$H$19","v":4.4000000000000003E-3}]
["Rural Rate Protection Charge",null,"$/kWh",{"$f":"'Rates Summary'!$H$20","v":1.2999999999999999E-3}]
["Standard Supply Service - Administrative Charge (if applicable)",null,"$",{"$f":"'Rates Summary'!$H$21","v":0.25}]
["MicroFIT SERVICE CLASSIFICATION"]
[]
["This classification applies to an electricity generation facility contracted under the Ontario Power Authority's microFIT program and connected to the distributor's distribution system. Further servicing details are available in the distributor's Conditions of Service."]
["APPLICATION"]
[]
["The application of these rates and charges shall be in accordance with the Licence of the Distributor and any Code or Order of the Board, and amendments thereto as approved by the Board, which may be applicable to the administration of this schedule."]
["No rates and charges for the distribution of electricity and charges to meet the costs of any work or service done or furnished for the purpose of the distribution of electricity shall be made except as permitted by this schedule, unless required by the Distributor's Licence or a Code or Order of the Board, and amendments thereto as approved by the Board, or as specified herein."]
["Unless specifically noted, this schedule does not contain any charges for the electricity commodity, be it under the Regulated Price Plan, a contract with a retailer or the wholesale market price, as applicable. In addition, the charges in the MONTHLY RATES AND CHARGES - Regulatory Component of this schedule do not apply to a customer that is an embedded wholesale market participant."]
["It should be noted that this schedule does not list any changes, assessments or credits that are required by law to be invoiced by a distributor and that are not subject to Board approval, such as the Debt Retirement Charge, the Global Adjustment, the Ontario Clean Energy Benefit and the HST."]
[]
["MONTHLY RATES AND CHARGES - Delivery Component"]
[]
["Service Charge",null,"$",5.4]
[]
[]
[]
[]
[]
[]
[]
[]
[]
[]
[]
[]
[]
[]
[]
[]
[]
[]
[]
[]
[]
[]
[]
[]
[]
[]
[]
[]
[]
[]
["MONTHLY RATES AND CHARGES - Regulatory Component"]
[]
["Wholesale Market Service Rate",null,"$/kWh",4.4000000000000003E-3]
["Rural Rate Protection Charge",null,"$/kWh",1.2999999999999999E-3]
["Standard Supply Service - Administrative Charge (if applicable)",null,"$",0.25]
[]
["ALLOWANCES"]
[]
["Transformer Allowance for Ownership - per kW of billing demand/month",null,"$/kW",-0.6]
[]
[]
["Primary Metering Allowance for transformer losses – applied to measured demand and energy",null,"%",-1]
[]
["SPECIFIC SERVICE CHARGES"]
[]
["APPLICATION"]
[]
["The application of these rates and charges shall be in accordance with the Licence of the Distributor and any Code or Order of the Board, and amendments thereto as approved by the Board, which may be applicable to the administration of this schedule."]
[]
["No charges to meet the costs of any work or service done or furnished for the purpose of the distribution of electricity shall be made except as permitted by this schedule, unless required by the Distributor’s Licence or a Code or Order of the Board, and amendments thereto as approved by the Board, or as specified herein."]
[]
["It should be noted that this schedule does not list any charges, assessments or credits that are required by law to be invoiced by a distributor and that are not subject to Board approval, such as the Debt Retirement Charge, the Global Adjustment, the Ontario Clean Energy Benefit and the HST."]
[]
["Customer Administration"]
[]
["Arrears certificate",null,"$",15]
["Statement of Account",null,"$",15]
["Request for other billing information",null,"$",15]
["Account History",null,"$",15]
["Returned cheque (plus bank charges)",null,"$",15]
["Legal letter",null,"$",15]
["Account set up charge/change of occupancy charge (plus credit agency costs if applicable)",null,"$",15]
["Special meter reads",null,"$",30]
["Meter dispute charge plus Measurement Canada fees (if meter found correct)",null,"$",30]
[]
[]
[]
[]
[]
[]
[]
[]
[]
[]
[]
[]
[]
[]
[]
[]
[]
[]
[]
[]
[]
[]
[]
[]
[]
[]
[]
["Non-Payment of Account"]
[]
["Late Payment – per month",null,"%",1.5]
["Late Payment – per annum",null,"%",19.559999999999999]
["Disconnect/Reconnect at meter – during regular hours",null,"$",65]
["Disconnect/Reconnect at meter – after regular hours",null,"$",185]
["Disconnect/Reconnect at pole – during regular hours",null,"$",185]
["Disconnect/Reconnect at pole – after regular hours",null,"$",415]
["Install/Remove load control device – during regular hours",null,"$",65]
["Install/Remove load control device – after regular hours",null,"$",185]
[]
[]
[]
[]
[]
[]
[]
[]
[]
[]
[]
[]
[]
[]
[]
[]
[]
["Other"]
[]
["Specific Charge for Access to the Power Poles - $/pole/year",null,"$",22.35]
["Layout fees",null,"$",200]
[]
[]
[]
[]
[]
[]
[]
[]
[]
[]
[]
[]
[]
[]
[]
[]
[]
[]
[]
[]
["RETAIL SERVICE CHARGES (if applicable)"]
[]
["The application of these rates and charges shall be in accordance with the Licence of the Distributor and any Code or Order of the Board, and amendments thereto as approved by the Board, which may be applicable to the administration of this schedule."]
[]
["No rates and charges for the distribution of electricity and charges to meet the costs of any work or service done or furnished for the purpose of the distribution of electricity shall be made except as permitted by this schedule, unless required by the Distributor’s Licence or a Code or Order of the Board, and amendments thereto as approved by the Board, or as specified herein."]
[]
["Unless specifically noted, this schedule does not contain any charges for the electricity commodity, be it under the Regulated Price Plan, a contract with a retailer or the wholesale market price, as applicable."]
[]
["It should be noted that this schedule does not list any charges, assessments or credits that are required by law to be invoiced by a distributor and that are not subject to Board approval, such as the Debt Retirement Charge, the Global Adjustment, the Ontario Clean Energy Benefit and the HST."]
[]
["Retail Service Charges refer to services provided by a distributor to retailers or customers related to the supply of competitive electricity."]
[]
["One-time charge, per retailer, to establish the service agreement between the distributor and the retailer",null,"$",100]
["Monthly Fixed Charge, per retailer",null,"$",20]
["Monthly Variable Charge, per customer, per retailer",null,"$/cust.",0.5]
["Distributor-consolidated billing monthly charge, per customer, per retailer",null,"$/cust.",0.3]
["Retailer-consolidated billing monthly credit, per customer, per retailer",null,"$/cust.",-0.3]
["Service Transaction Requests (STR) "]
["Request fee, per request, applied to the requesting party",null,"$",0.25]
["Processing fee, per request, applied to the requesting party",null,"$",0.5]
["Request for customer information as outlined in Section 10.6.3 and Chapter 11 of the Retail"]
["Settlement Code directly to retailers and customers, if not delivered electronically through the"]
["Electronic Business Transaction (EBT) system, applied to the requesting party "]
["Up to twice a year",null,"$","no charge"]
["More than twice a year, per request (plus incremental delivery costs)",null,"$",2]
[]
["LOSS FACTORS"]
[]
["If the distributor is not capable of prorating changed loss factors jointly with distribution rates, the revised loss factors will be implemented upon the first subsequent billing for each billing cycle."]
[]
[]
["Distribution Loss Factor - Secondary Metered Customer < 5,000 kW",null,null,1.0392999999999999]
["Distribution Loss Factor - Secondary Metered Customer > 5,000 kW",null,null,1.0187999999999999]
["Distribution Loss Factor - Primary Metered Customer < 5,000 kW",null,null,1.0288999999999999]
["Distribution Loss Factor - Primary Metered Customer > 5,000 kW",null,null,1.0085999999999999]

{"sheet":"App. 2-Z_2017 Tariff","index":27,"n_rows":570,"n_cols":4,"rows_kept":570,"cut":false,"hidden":false,"merged":[[566,0,566,1],[567,0,567,1],[568,0,568,1],[569,0,569,1],[570,0,570,1],[571,0,571,1],[556,0,556,1],[557,0,557,1],[558,0,558,1],[559,0,559,1],[563,0,563,3],[563,4,563,7],[550,0,550,1],[551,0,551,1],[552,0,552,1],[553,0,553,1],[554,0,554,1],[555,0,555,1],[545,0,545,3],[545,4,545,7],[547,0,547,1],[547,4,547,5],[548,0,548,1],[549,0,549,1],[542,0,542,3],[542,4,542,7],[543,0,543,3],[543,4,543,7],[544,0,544,3],[544,4,544,7],[539,0,539,3],[539,4,539,7],[540,0,540,3],[540,4,540,7],[541,0,541,3],[541,4,541,7],[532,0,532,1],[533,0,533,1],[537,0,537,3],[537,4,537,7],[538,0,538,3],[538,4,538,7],[526,0,526,1],[527,0,527,1],[528,0,528,1],[529,0,529,1],[530,0,530,1],[531,0,531,1],[520,0,520,1],[521,0,521,1],[522,0,522,1],[523,0,523,1],[524,0,524,1],[525,0,525,1],[514,0,514,1],[515,0,515,1],[516,0,516,1],[517,0,517,1],[518,0,518,1],[519,0,519,1],[506,0,506,1],[507,0,507,1],[508,0,508,1],[509,0,509,1],[510,0,510,1],[513,0,513,1],[500,0,500,1],[501,0,501,1],[502,0,502,1],[503,0,503,1],[504,0,504,1],[505,0,505,1],[494,0,494,1],[495,0,495,1],[496,0,496,1],[497,0,497,1],[498,0,498,1],[499,0,499,1],[488,0,488,1],[489,0,489,1],[490,0,490,1],[491,0,491,1],[492,0,492,1],[493,0,493,1],[479,0,479,1],[480,0,480,1],[481,0,481,1],[482,0,482,1],[486,0,486,1],[487,0,487,1],[473,0,473,1],[474,0,474,1],[475,0,475,1],[476,0,476,1],[477,0,477,1],[478,0,478,1],[467,0,467,1],[468,0,468,1],[469,0,469,1],[470,0,470,1],[471,0,471,1],[472,0,472,1],[461,0,461,1],[462,0,462,1],[463,0,463,1],[464,0,464,1],[465,0,465,1],[466,0,466,1],[455,0,455,1],[456,0,456,1],[457,0,457,1],[458,0,458,1],[459,0,459,1],[460,0,460,1],[449,0,449,1],[450,0,450,1],[451,0,451,1],[452,0,452,1],[453,0,453,1],[454,0,454,1],[440,0,440,3],[442,0,442,3],[442,4,442,7],[444,0,444,3],[444,4,444,7],[448,0,448,1],[426,0,426,1],[427,0,427,1],[431,0,431,1],[432,0,432,1],[433,0,433,1],[434,0,434,1],[417,0,417,1],[418,0,418,1],[419,0,419,1],[420,0,420,1],[421,0,421,1],[425,0,425,1],[411,0,411,1],[412,0,412,1],[413,0,413,1],[414,0,414,1],[415,0,415,1],[416,0,416,1],[405,0,405,1],[406,0,406,1],[407,0,407,1],[408,0,408,1],[409,0,409,1],[410,0,410,1],[399,0,399,1],[400,0,400,1],[401,0,401,1],[402,0,402,1],[403,0,403,1],[404,0,404,1],[393,0,393,1],[394,0,394,1],[395,0,395,1],[396,0,396,1],[397,0,397,1],[398,0,398,1],[382,0,382,3],[385,0,385,3],[386,0,386,3],[387,0,387,3],[388,0,388,3],[392,0,392,1],[372,0,372,1],[373,0,373,1],[377,0,377,1],[378,0,378,1],[379,0,379,1],[380,0,380,3],[366,0,366,1],[367,0,367,1],[368,0,368,1],[369,0,369,1],[370,0,370,1],[371,0,371,1],[360,0,360,1],[361,0,361,1],[362,0,362,1],[363,0,363,1],[364,0,364,1],[365,0,365,1],[354,0,354,1],[355,0,355,1],[356,0,356,1],[357,0,357,1],[358,0,358,1],[359,0,359,1],[348,0,348,1],[349,0,349,1],[350,0,350,1],[351,0,351,1],[352,0,352,1],[353,0,353,1],[339,0,339,3],[340,0,340,3],[344,0,344,1],[345,0,345,1],[346,0,346,1],[347,0,347,1],[330,0,330,1],[331,0,331,1],[332,0,332,3],[334,0,334,3],[337,0,337,3],[338,0,338,3],[321,0,321,1],[322,0,322,1],[323,0,323,1],[324,0,324,1],[325,0,325,1],[329,0,329,1],[315,0,315,1],[316,0,316,1],[317,0,317,1],[318,0,318,1],[319,0,319,1],[320,0,320,1],[309,0,309,1],[310,0,310,1],[311,0,311,1],[312,0,312,1],[313,0,313,1],[314,0,314,1],[303,0,303,1],[304,0,304,1],[305,0,305,1],[306,0,306,1],[307,0,307,1],[308,0,308,1],[297,0,297,1],[298,0,298,1],[299,0,299,1],[300,0,300,1],[301,0,301,1],[302,0,302,1],[286,0,286,3],[289,0,289,3],[290,0,290,3],[291,0,291,3],[292,0,292,3],[296,0,296,1],[276,0,276,1],[277,0,277,1],[281,0,281,1],[282,0,282,1],[283,0,283,1],[284,0,284,3],[270,0,270,1],[271,0,271,1],[272,0,272,1],[273,0,273,1],[274,0,274,1],[275,0,275,1],[264,0,264,1],[265,0,265,1],[266,0,266,1],[267,0,267,1],[268,0,268,1],[269,0,269,1],[258,0,258,1],[259,0,259,1],[260,0,260,1],[261,0,261,1],[262,0,262,1],[263,0,263,1],[252,0,252,1],[253,0,253,1],[254,0,254,1],[255,0,255,1],[256,0,256,1],[257,0,257,1],[243,0,243,3],[244,0,244,3],[248,0,248,1],[249,0,249,1],[250,0,250,1],[251,0,251,1],[234,0,234,1],[235,0,235,1],[236,0,236,3],[238,0,238,3],[241,0,241,3],[242,0,242,3],[225,0,225,1],[226,0,226,1],[227,0,227,1],[228,0,228,1],[229,0,229,1],[233,0,233,1],[219,0,219,1],[220,0,220,1],[221,0,221,1],[222,0,222,1],[223,0,223,1],[224,0,224,1],[213,0,213,1],[214,0,214,1],[215,0,215,1],[216,0,216,1],[217,0,217,1],[218,0,218,1],[207,0,207,1],[208,0,208,1],[209,0,209,1],[210,0,210,1],[211,0,211,1],[212,0,212,1],[201,0,201,1],[202,0,202,1],[203,0,203,1],[204,0,204,1],[205,0,205,1],[206,0,206,1],[190,0,190,3],[193,0,193,3],[194,0,194,3],[195,0,195,3],[196,0,196,3],[200,0,200,1],[180,0,180,1],[181,0,181,1],[185,0,185,1],[186,0,186,1],[187,0,187,1],[188,0,188,3],[174,0,174,1],[175,0,175,1],[176,0,176,1],[177,0,177,1],[178,0,178,1],[179,0,179,1],[168,0,168,1],[169,0,169,1],[170,0,170,1],[171,0,171,1],[172,0,172,1],[173,0,173,1],[162,0,162,1],[163,0,163,1],[164,0,164,1],[165,0,165,1],[166,0,166,1],[167,0,167,1],[156,0,156,1],[157,0,157,1],[158,0,158,1],[159,0,159,1],[160,0,160,1],[161,0,161,1],[147,0,147,3],[148,0,148,3],[152,0,152,1],[153,0,153,1],[154,0,154,1],[155,0,155,1],[138,0,138,1],[139,0,139,1],[140,0,140,3],[142,0,142,3],[145,0,145,3],[146,0,146,3],[129,0,129,1],[130,0,130,1],[131,0,131,1],[132,0,132,1],[133,0,133,1],[137,0,137,1],[123,0,123,1],[124,0,124,1],[125,0,125,1],[126,0,126,1],[127,0,127,1],[128,0,128,1],[117,0,117,1],[118,0,118,1],[119,0,119,1],[120,0,120,1],[121,0,121,1],[122,0,122,1],[111,0,111,1],[112,0,112,1],[113,0,113,1],[114,0,114,1],[115,0,115,1],[116,0,116,1],[105,0,105,1],[106,0,106,1],[107,0,107,1],[108,0,108,1],[109,0,109,1],[110,0,110,1],[94,0,94,3],[97,0,97,3],[98,0,98,3],[99,0,99,3],[100,0,100,3],[104,0,104,1],[84,0,84,1],[85,0,85,1],[89,0,89,1],[90,0,90,1],[91,0,91,1],[92,0,92,3],[78,0,78,1],[79,0,79,1],[80,0,80,1],[81,0,81,1],[82,0,82,1],[83,0,83,1],[72,0,72,1],[73,0,73,1],[74,0,74,1],[75,0,75,1],[76,0,76,1],[77,0,77,1],[66,0,66,1],[67,0,67,1],[68,0,68,1],[69,0,69,1],[70,0,70,1],[71,0,71,1],[60,0,60,1],[61,0,61,1],[62,0,62,1],[63,0,63,1],[64,0,64,1],[65,0,65,1],[51,0,51,3],[52,0,52,3],[56,0,56,1],[57,0,57,1],[58,0,58,1],[59,0,59,1],[41,0,41,3],[42,0,42,3],[44,0,44,3],[46,0,46,3],[49,0,49,3],[50,0,50,3],[24,0,24,3],[25,0,25,3],[36,0,36,3],[37,0,37,3],[38,0,38,3],[40,0,40,3],[18,0,18,3],[19,0,19,3],[20,0,20,3],[21,0,21,3],[22,0,22,3],[23,0,23,3],[7,0,7,3],[9,0,9,3],[10,0,10,3],[12,0,12,1],[14,0,14,3],[17,0,17,3],[0,2,0,3],[1,2,1,3],[2,2,2,3],[3,2,3,3],[4,2,4,3],[6,2,6,3]]}
[null,"File Number:",{"$f":"EBNUMBER","v":"EB-2015-0083"}]
[null,"Exhibit:"]
[null,"Tab:"]
[null,"Schedule:"]
[null,"Page:"]
[]
[null,"Date:"]
["Appendix 2-Z\nProposed Tariff of Rates and Charges"]
[]
["For each class, Applicants are required to copy and paste the class descriptions (located directly under the class name) and the description of the applicability of those rates (description is found under the class name and directly under the word \"APPLICATION\").  By using the drop-down lists located under the column labeled \"Rate Description\", please select the descriptions of the rates and charges that BEST MATCHES the descriptions on your most recent Board-Approved Tariff of Rates and Charges.  If the description is not found in the drop-down list, please enter the description in the green shaded cells under the correct class exactly as it appears on the tariff.   Please do not enter more than one \"Service Charge\" for each class for which a base monthly fixed charge applies.  All rate rider descriptions should begin with \"Rate Rider for...\"."]
["Select the appropriate rate classes as they appear on your most recent Board-Approved Tariff of Rates and Charges, including the MicroFit Class."]
[]
["How many classes are listed on your most recent Board-Approved Tariff of Rates and Charges?",null,8]
[]
["Identify Your Rate Classes in the Blue Cells below.  Rate class names can be selected from the pull-dwon menu.  Please ensure that a rate class is assigned to each shaded cell.\n"]
[]
[]
["List of Rate Classes"]
["RESIDENTIAL"]
["GENERAL SERVICE LESS THAN 50 KW"]
["GENERAL SERVICE 50 TO 4,999 KW"]
["LARGE USE"]
["UNMETERED SCATTERED LOAD"]
["STANDBY POWER"]
["STREET LIGHTING"]
["MicroFIT"]
[]
[]
[]
[]
[]
[]
[]
[]
["Once all blue shaded cells above are filled out, press the following button to create your tariff template"]
[]
[{"$f":"'[2]LDC Info'!E14","v":"Kingston Hydro Corporation"}]
["TARIFF OF RATES AND CHARGES"]
[{"$f":"\"Effective and Implementation Date January 1, 2017\"","v":"Effective and Implementation Date January 1, 2017"}]
[]
["This schedule supersedes and replaces all previously"]
["approved schedules of Rates, Charges and Loss Factors"]
[{"$f":"EBNUMBER","v":"EB-2015-0083"}]
[]
["RESIDENTIAL SERVICE CLASSIFICATION"]
[]
["This classification applies to an account taking electricity at 750 volts or less where the electricity is used exclusively in a separate metered living accommodation. Customers shall be residing in single-dwelling units that consist of a detached house or one unit of a semi-detached, duplex, triplex or quadruplex house, with a residential zoning. Separately metered dwellings within a town house complex or apartment building also qualify as residential customers. All customers are single-phase. Further servicing details are available in the distributor's Conditions of Service."]
["APPLICATION"]
[]
["The application of these rates and charges shall be in accordance with the Licence of the Distributor and any Code or Order of the Board, and amendments thereto as approved by the Board, which may be applicable to the administration of this schedule."]
["No rates and charges for the distribution of electricity and charges to meet the costs of any work or service done or furnished for the purpose of the distribution of electricity shall be made except as permitted by this schedule, unless required by the Distributor's Licence or a Code or Order of the Board, and amendments thereto as approved by the Board, or as specified herein."]
["Unless specifically noted, this schedule does not contain any charges for the electricity commodity, be it under the Regulated Price Plan, a contract with a retailer or the wholesale market price, as applicable. In addition, the charges in the MONTHLY RATES AND CHARGES - Regulatory Component of this schedule do not apply to a customer that is an embedded wholesale market participant."]
["It should be noted that this schedule does not list any changes, assessments or credits that are required by law to be invoiced by a distributor and that are not subject to Board approval, such as the Debt Retirement Charge, the Global Adjustment, the Ontario Clean Energy Benefit and the HST."]
[]
["MONTHLY RATES AND CHARGES - Delivery Component"]
[]
["Service Charge",null,"$",{"$f":"'Rates Summary'!$F$28","v":18.54}]
["Rate Rider for Smart Metering Entity Charge - effective until October 31, 2018",null,"$",{"$f":"'Rates Summary'!$C$16","v":0.78800000000000003}]
[]
[]
["Distribution Volumetric Rate",null,"$/kWh",{"$f":"'Rates Summary'!$F$40","v":8.2000000000000007E-3}]
["Low Voltage Service Rate",null,"$/kWh",{"$f":"'Rates Summary'!$C$15","v":1.1999999999999999E-3}]
["Retail Transmission Rate - Network Service Rate",null,"$/kWh",{"$f":"'Rates Summary'!$C$17","v":7.1000000000000004E-3}]
["Retail Transmission Rate - Line and Transformation Connection Service Rate",null,"$/kWh",{"$f":"'Rates Summary'!$C$18","v":5.5999999999999999E-3}]
[]
[]
[]
[]
[]
[]
[]
[]
[]
[]
[]
[]
[]
[]
[]
[]
[]
[]
[]
[]
[]
[]
[]
["MONTHLY RATES AND CHARGES - Regulatory Component"]
[]
["Wholesale Market Service Rate",null,"$/kWh",{"$f":"'Rates Summary'!$C$19","v":4.4000000000000003E-3}]
["Rural Rate Protection Charge",null,"$/kWh",{"$f":"'Rates Summary'!$C$20","v":1.2999999999999999E-3}]
["Standard Supply Service - Administrative Charge (if applicable)",null,"$",{"$f":"'Rates Summary'!$C$21","v":0.25}]
["GENERAL SERVICE LESS THAN 50 KW SERVICE CLASSIFICATION"]
[]
["This classification refers to a non residential account taking electricity at 750 volts or less whose monthly average peak demand is less than, or is forecast to be less than, 50 kW. Further servicing details are available in the distributor's Conditions of Service."]
["APPLICATION"]
[]
["The application of these rates and charges shall be in accordance with the Licence of the Distributor and any Code or Order of the Board, and amendments thereto as approved by the Board, which may be applicable to the administration of this schedule."]
["Unless specifically noted, this schedule does not contain any charges for the electricity commodity, be it under the Regulated Price Plan, a contract with a retailer or the wholesale market price, as applicable. In addition, the charges in the MONTHLY RATES AND CHARGES - Regulatory Component of this schedule do not apply to a customer that is an embedded wholesale market participant."]
["Unless specifically noted, this schedule does not contain any charges for the electricity commodity, be it under the Regulated Price Plan, a contract with a retailer or the wholesale market price, as applicable. In addition, the charges in the MONTHLY RATES AND CHARGES - Regulatory Component of this schedule do not apply to a customer that is an embedded wholesale market participant."]
["It should be noted that this schedule does not list any changes, assessments or credits that are required by law to be invoiced by a distributor and that are not subject to Board approval, such as the Debt Retirement Charge, the Global Adjustment, the Ontario Clean Energy Benefit and the HST."]
[]
["MONTHLY RATES AND CHARGES - Delivery Component"]
[]
["Service Charge",null,"$",{"$f":"'Rates Summary'!$F$29","v":14.59}]
["Rate Rider for Smart Metering Entity Charge - effective until October 31, 2018",null,"$",{"$f":"'Rates Summary'!$D$16","v":0.78800000000000003}]
[]
[]
["Distribution Volumetric Rate",null,"$/kWh",{"$f":"'Rates Summary'!$F$41","v":1.5100000000000001E-2}]
["Low Voltage Service Rate",null,"$/kWh",{"$f":"'Rates Summary'!$D$15","v":1.1000000000000001E-3}]
["Retail Transmission Rate - Network Service Rate",null,"$/kWh",{"$f":"'Rates Summary'!$D$17","v":6.3E-3}]
["Retail Transmission Rate - Line and Transformation Connection Service Rate",null,"$/kWh",{"$f":"'Rates Summary'!$D$18","v":5.1000000000000004E-3}]
[]
[]
[]
[]
[]
[]
[]
[]
[]
[]
[]
[]
[]
[]
[]
[]
[]
[]
[]
[]
[]
[]
[]
["MONTHLY RATES AND CHARGES - Regulatory Component"]
[]
["Wholesale Market Service Rate",null,"$/kWh",{"$f":"'Rates Summary'!$D$19","v":4.4000000000000003E-3}]
["Rural Rate Protection Charge",null,"$/kWh",{"$f":"'Rates Summary'!$D$20","v":1.2999999999999999E-3}]
["Standard Supply Service - Administrative Charge (if applicable)",null,"$",{"$f":"'Rates Summary'!$D$21","v":0.25}]
["GENERAL SERVICE 50 TO 4,999 KW SERVICE CLASSIFICATION"]
[]
["This classification refers to a non residential account whose monthly average peak demand is equal to or greater than, or is forecast to be equal to or greater than, 50 kW but less than 5,000 kW. Further servicing details are available in th distributor's Conditions of Service."]
["APPLICATION"]
[]
["The application of these rates and charges shall be in accordance with the Licence of the Distributor and any Code or Order of the Board, and amendments thereto as approved by the Board, which may be applicable to the administration of this schedule."]
["No rates and charges for the distribution of electricity and charges to meet the costs of any work or service done or furnished for the purpose of the distribution of electricity shall be made except as permitted by this schedule, unless required by the Distributor's Licence or a Code or Order of the Board, and amendments thereto as approved by the Board, or as specified herein."]
["Unless specifically noted, this schedule does not contain any charges for the electricity commodity, be it under the Regulated Price Plan, a contract with a retailer or the wholesale market price, as applicable. In addition, the charges in the MONTHLY RATES AND CHARGES - Regulatory Component of this schedule do not apply to a customer that is an embedded wholesale market participant."]
["It should be noted that this schedule does not list any changes, assessments or credits that are required by law to be invoiced by a distributor and that are not subject to Board approval, such as the Debt Retirement Charge, the Global Adjustment, the Ontario Clean Energy Benefit and the HST."]
[]
["MONTHLY RATES AND CHARGES - Delivery Component"]
[]
["Service Charge",null,"$",{"$f":"'Rates Summary'!$F$30","v":107.49}]
["Distribution Volumetric Rate",null,"$/kW",{"$f":"'Rates Summary'!$F$42","v":3.101}]
["Low Voltage Service Rate",null,"$/kW",{"$f":"'Rates Summary'!$E$15","v":0.46629999999999999}]
["Retail Transmission Rate - Network Service Rate",null,"$/kW",{"$f":"'Rates Summary'!$E$17","v":2.7797000000000001}]
["Retail Transmission Rate - Line and Transformation Connection Service Rate",null,"$/kW",{"$f":"'Rates Summary'!$E$18","v":2.2225000000000001}]
[]
[]
[]
[]
[]
[]
[]
[]
[]
[]
[]
[]
[]
[]
[]
[]
[]
[]
[]
[]
[]
[]
[]
[]
[]
[]
["MONTHLY RATES AND CHARGES - Regulatory Component"]
[]
["Wholesale Market Service Rate",null,"$/kWh",{"$f":"'Rates Summary'!$E$19","v":4.4000000000000003E-3}]
["Rural Rate Protection Charge",null,"$/kWh",{"$f":"'Rates Summary'!$E$20","v":1.2999999999999999E-3}]
["Standard Supply Service - Administrative Charge (if applicable)",null,"$",{"$f":"'Rates Summary'!$E$21","v":0.25}]
["LARGE USE SERVICE CLASSIFICATION"]
[]
["This classification refers to an account whose monthly average peak demand is equal to or greater than, or is forecast to be equal to or greater than, 5,000 kW. Further servicing details are available in the distributor's Conditions of Service."]
["APPLICATION"]
[]
["The application of these rates and charges shall be in accordance with the Licence of the Distributor and any Code or Order of the Board, and amendments thereto as approved by the Board, which may be applicable to the administration of this schedule."]
["No rates and charges for the distribution of electricity and charges to meet the costs of any work or service done or furnished for the purpose of the distribution of electricity shall be made except as permitted by this schedule, unless required by the Distributor's Licence or a Code or Order of the Board, and amendments thereto as approved by the Board, or as specified herein."]
["Unless specifically noted, this schedule does not contain any charges for the electricity commodity, be it under the Regulated Price Plan, a contract with a retailer or the wholesale market price, as applicable. In addition, the charges in the MONTHLY RATES AND CHARGES - Regulatory Component of this schedule do not apply to a customer that is an embedded wholesale market participant."]
["It should be noted that this schedule does not list any changes, assessments or credits that are required by law to be invoiced by a distributor and that are not subject to Board approval, such as the Debt Retirement Charge, the Global Adjustment, the Ontario Clean Energy Benefit and the HST."]
[]
["MONTHLY RATES AND CHARGES - Delivery Component"]
[]
["Service Charge",null,"$",{"$f":"'Rates Summary'!$F$31","v":5164}]
["Distribution Volumetric Rate",null,"$/kW",{"$f":"'Rates Summary'!$F$43","v":1.216}]
["Low Voltage Service Rate",null,"$/kW",{"$f":"'Rates Summary'!$F$15","v":0.56189999999999996}]
["Retail Transmission Rate - Network Service Rate",null,"$/kW",{"$f":"'Rates Summary'!$F$17","v":3.3492000000000002}]
["Retail Transmission Rate - Line and Transformation Connection Service Rate",null,"$/kW",{"$f":"'Rates Summary'!$F$18","v":2.6779999999999999}]
[]
[]
[]
[]
[]
[]
[]
[]
[]
[]
[]
[]
[]
[]
[]
[]
[]
[]
[]
[]
[]
[]
[]
[]
[]
[]
["MONTHLY RATES AND CHARGES - Regulatory Component"]
[]
["Wholesale Market Service Rate",null,"$/kWh",{"$f":"'Rates Summary'!$F$19","v":4.4000000000000003E-3}]
["Rural Rate Protection Charge",null,"$/kWh",{"$f":"'Rates Summary'!$F$20","v":1.2999999999999999E-3}]
["Standard Supply Service - Administrative Charge (if applicable)",null,"$",{"$f":"'Rates Summary'!$F$21","v":0.25}]
["UNMETERED SCATTERED LOAD SERVICE CLASSIFICATION"]
[]
["This classification refers to an account taking electricity at 750 volts or less whose monthly average peak demand is less than, or is forecast to be less than, 50 kW and the consumption is unmetered. Such connections include cable TV power packs, bus shelters, telephone booths, traffic lights, railway crossings, etc. The customer will provide detailed manufacturer information/documentation with regard to electrical demand/consumption of the proposed unmetered load. Further servicing details are available in the distributor's Conditons of Service."]
["APPLICATION"]
[]
["The application of these rates and charges shall be in accordance with the Licence of the Distributor and any Code or Order of the Board, and amendments thereto as approved by the Board, which may be applicable to the administration of this schedule."]
["No rates and charges for the distribution of electricity and charges to meet the costs of any work or service done or furnished for the purpose of the distribution of electricity shall be made except as permitted by this schedule, unless required by the Distributor's Licence or a Code or Order of the Board, and amendments thereto as approved by the Board, or as specified herein."]
["Unless specifically noted, this schedule does not contain any charges for the electricity commodity, be it under the Regulated Price Plan, a contract with a retailer or the wholesale market price, as applicable. In addition, the charges in the MONTHLY RATES AND CHARGES - Regulatory Component of this schedule do not apply to a customer that is an embedded wholesale market participant."]
["It should be noted that this schedule does not list any changes, assessments or credits that are required by law to be invoiced by a distributor and that are not subject to Board approval, such as the Debt Retirement Charge, the Global Adjustment, the Ontario Clean Energy Benefit and the HST."]
[]
["MONTHLY RATES AND CHARGES - Delivery Component"]
[]
["Service Charge (per customer)",null,"$",{"$f":"'Rates Summary'!$F$32","v":5.95}]
["Distribution Volumetric Rate",null,"$/kWh",{"$f":"'Rates Summary'!$F$44","v":1.18E-2}]
["Low Voltage Service Rate",null,"$/kWh",{"$f":"'Rates Summary'!$G$15","v":1.1999999999999999E-3}]
["Retail Transmission Rate - Network Service Rate",null,"$/kWh",{"$f":"'Rates Summary'!$G$17","v":7.1000000000000004E-3}]
["Retail Transmission Rate - Line and Transformation Connection Service Rate",null,"$/kWh",{"$f":"'Rates Summary'!$G$18","v":5.5999999999999999E-3}]
[]
[]
[]
[]
[]
[]
[]
[]
[]
[]
[]
[]
[]
[]
[]
[]
[]
[]
[]
[]
[]
[]
[]
[]
[]
[]
["MONTHLY RATES AND CHARGES - Regulatory Component"]
[]
["Wholesale Market Service Rate",null,"$/kWh",{"$f":"'Rates Summary'!$G$19","v":4.4000000000000003E-3}]
["Rural Rate Protection Charge",null,"$/kWh",{"$f":"'Rates Summary'!$H$20","v":1.2999999999999999E-3}]
["Standard Supply Service - Administrative Charge (if applicable)",null,"$",{"$f":"'Rates Summary'!$H$21","v":0.25}]
["STANDBY POWER on a FINAL BASIS SERVICE CLASSIFICATION"]
[]
["This classification refers to an account that has Load Displacement Generation and requires Kingston Hydro Corporation to provide back-up service. Further servicing details are available in the distributors's Conditions of Service."]
["APPLICATION"]
[]
["The application of these rates and charges shall be in accordance with the Licence of the Distributor and any Code or Order of the Board, and amendments thereto as approved by the Board, which may be applicable to the administration of this schedule."]
["No rates and charges for the distribution of electricity and charges to meet the costs of any work or service done or furnished for the purpose of the distribution of electricity shall be made except as permitted by this schedule, unless required by the Distributor's Licence or a Code or Order of the Board, and amendments thereto as approved by the Board, or as specified herein."]
["Unless specifically noted, this schedule does not contain any charges for the electricity commodity, be it under the Regulated Price Plan, a contract with a retailer or the wholesale market price, as applicable. In addition, the charges in the MONTHLY RATES AND CHARGES - Regulatory Component of this schedule do not apply to a customer that is an embedded wholesale market participant."]
["It should be noted that this schedule does not list any changes, assessments or credits that are required by law to be invoiced by a distributor and that are not subject to Board approval, such as the Debt Retirement Charge, the Global Adjustment, the Ontario Clean Energy Benefit and the HST."]
[]
["MONTHLY RATES AND CHARGES - Delivery Component"]
[]
["Standby Charges are to be applied to behind-the-meter generators that are not IESO market participants, FIT program participants, net-metered generators or retail generators, which have their own metering and settlement conventions as per regulation and legislation. \n\nStandby Charges are based on applicable applicable monthly General Service < 50kW,  General Service > 50kW to 4,999 kW or Large Use Distribution Volumetric Charges, depending on the rate classification of the generator host facility.\n\nIn the case where utility grade metering is not installed on the generator, Distribution Charges on the generator host facility’s load account will be determined by multiplying the peak hourly delivered load as measured by the load account meter in kW by applicable variable charges for the rate class. Standby Charges are determined by multiplying the nameplate capacity of the behind the meter generator in KW by applicable Standby Power charges in each month. \n\nThis type of scenario is preferable for our customers if the generator is a “baseload” or “24-7-365” generator such as a fuel cell CHP unit or pressure-drop turbine unit. It may also be preferable to the customer where the cost of utility grade metering is high or the size of the generator is very small relative to the demand of the host load customer. \n\nIn the case where utility grade metering is installed on the generator, Distribution Charges on the generator host facility’s load account will be determined by multiplying the peak hourly delivered load as measured by the load account meter in kW by applicable variable charges for the rate class. Standby Charges will be determined by multiplying the peak coincident combined kW delivered by both the distribution system and the generator, less the peak hourly delivered load in kW of the host customer facility as measured by the generator host load account meter.\n\nThis type of scenario is preferable for customers who wish to use generators or electricity storage facilities to participate in provincial conservation initiatives such as the IESO’s Demand Response or Industrial Conservation Initiatives, or reduce kWh consumption to contribute towards Kingston Hydro’s 2020 Conservation Targets, but are not able to operate their generators “24-7-365”.\n"]
[]
[]
[]
[]
[]
[]
[]
[]
[]
[]
[]
[]
[]
[]
[]
[]
[]
[]
[]
[]
[]
[]
[]
[]
[]
[]
[]
[]
[]
[]
["MONTHLY RATES AND CHARGES - Regulatory Component"]
[]
[]
[]
[]
["STREET LIGHTING SERVICE CLASSIFICATION"]
[]
["This classification refers to an account for roadway lighting with a Municipality, Regional Municipality, Ministry of Transportation and private roadway lighting operation, controlled by photo cells. The consumption for these customers will be based on the calculated connected load times the required lighting times established in the approved OEB street lighting load shape template. Further servicing details are available in the distributor's Conditions of Service."]
["APPLICATION"]
[]
["The application of these rates and charges shall be in accordance with the Licence of the Distributor and any Code or Order of the Board, and amendments thereto as approved by the Board, which may be applicable to the administration of this schedule."]
["No rates and charges for the distribution of electricity and charges to meet the costs of any work or service done or furnished for the purpose of the distribution of electricity shall be made except as permitted by this schedule, unless required by the Distributor's Licence or a Code or Order of the Board, and amendments thereto as approved by the Board, or as specified herein."]
["Unless specifically noted, this schedule does not contain any charges for the electricity commodity, be it under the Regulated Price Plan, a contract with a retailer or the wholesale market price, as applicable. In addition, the charges in the MONTHLY RATES AND CHARGES - Regulatory Component of this schedule do not apply to a customer that is an embedded wholesale market participant."]
["It should be noted that this schedule does not list any changes, assessments or credits that are required by law to be invoiced by a distributor and that are not subject to Board approval, such as the Debt Retirement Charge, the Global Adjustment, the Ontario Clean Energy Benefit and the HST."]
[]
["MONTHLY RATES AND CHARGES - Delivery Component"]
[]
["Service Charge (per light)",null,"$",{"$f":"'Rates Summary'!$F$33","v":1.05}]
["Distribution Volumetric Rate",null,"$/kW",{"$f":"'Rates Summary'!$F$45","v":11.891}]
["Low Voltage Service Rate",null,"$/kW",{"$f":"'Rates Summary'!$H$15","v":0.33679999999999999}]
["Retail Transmission Rate - Network Service Rate",null,"$/kW",{"$f":"'Rates Summary'!$H$17","v":2.0078}]
["Retail Transmission Rate - Line and Transformation Connection Service Rate",null,"$/kW",{"$f":"'Rates Summary'!$H$18","v":1.6052999999999999}]
[]
[]
[]
[]
[]
[]
[]
[]
[]
[]
[]
[]
[]
[]
[]
[]
[]
[]
[]
[]
[]
[]
[]
[]
[]
[]
["MONTHLY RATES AND CHARGES - Regulatory Component"]
[]
["Wholesale Market Service Rate",null,"$/kWh",{"$f":"'Rates Summary'!$H$19","v":4.4000000000000003E-3}]
["Rural Rate Protection Charge",null,"$/kWh",{"$f":"'Rates Summary'!$H$20","v":1.2999999999999999E-3}]
["Standard Supply Service - Administrative Charge (if applicable)",null,"$",{"$f":"'Rates Summary'!$H$21","v":0.25}]
["MicroFIT SERVICE CLASSIFICATION"]
[]
["This classification applies to an electricity generation facility contracted under the Ontario Power Authority's microFIT program and connected to the distributor's distribution system. Further servicing details are available in the distributor's Conditions of Service."]
["APPLICATION"]
[]
["The application of these rates and charges shall be in accordance with the Licence of the Distributor and any Code or Order of the Board, and amendments thereto as approved by the Board, which may be applicable to the administration of this schedule."]
["No rates and charges for the distribution of electricity and charges to meet the costs of any work or service done or furnished for the purpose of the distribution of electricity shall be made except as permitted by this schedule, unless required by the Distributor's Licence or a Code or Order of the Board, and amendments thereto as approved by the Board, or as specified herein."]
["Unless specifically noted, this schedule does not contain any charges for the electricity commodity, be it under the Regulated Price Plan, a contract with a retailer or the wholesale market price, as applicable. In addition, the charges in the MONTHLY RATES AND CHARGES - Regulatory Component of this schedule do not apply to a customer that is an embedded wholesale market participant."]
["It should be noted that this schedule does not list any changes, assessments or credits that are required by law to be invoiced by a distributor and that are not subject to Board approval, such as the Debt Retirement Charge, the Global Adjustment, the Ontario Clean Energy Benefit and the HST."]
[]
["MONTHLY RATES AND CHARGES - Delivery Component"]
[]
["Service Charge",null,"$",5.4]
[]
[]
[]
[]
[]
[]
[]
[]
[]
[]
[]
[]
[]
[]
[]
[]
[]
[]
[]
[]
[]
[]
[]
[]
[]
[]
[]
[]
[]
[]
["MONTHLY RATES AND CHARGES - Regulatory Component"]
[]
["Wholesale Market Service Rate",null,"$/kWh",4.4000000000000003E-3]
["Rural Rate Protection Charge",null,"$/kWh",1.2999999999999999E-3]
["Standard Supply Service - Administrative Charge (if applicable)",null,"$",0.25]
[]
["ALLOWANCES"]
[]
["Transformer Allowance for Ownership - per kW of billing demand/month",null,"$/kW",-0.6]
[]
[]
["Primary Metering Allowance for transformer losses – applied to measured demand and energy",null,"%",-1]
[]
["SPECIFIC SERVICE CHARGES"]
[]
["APPLICATION"]
[]
["The application of these rates and charges shall be in accordance with the Licence of the Distributor and any Code or Order of the Board, and amendments thereto as approved by the Board, which may be applicable to the administration of this schedule."]
[]
["No charges to meet the costs of any work or service done or furnished for the purpose of the distribution of electricity shall be made except as permitted by this schedule, unless required by the Distributor’s Licence or a Code or Order of the Board, and amendments thereto as approved by the Board, or as specified herein."]
[]
["It should be noted that this schedule does not list any charges, assessments or credits that are required by law to be invoiced by a distributor and that are not subject to Board approval, such as the Debt Retirement Charge, the Global Adjustment, the Ontario Clean Energy Benefit and the HST."]
[]
["Customer Administration"]
[]
["Arrears certificate",null,"$",15]
["Statement of Account",null,"$",15]
["Request for other billing information",null,"$",15]
["Account History",null,"$",15]
["Returned cheque (plus bank charges)",null,"$",15]
["Legal letter",null,"$",15]
["Account set up charge/change of occupancy charge (plus credit agency costs if applicable)",null,"$",15]
["Special meter reads",null,"$",30]
["Meter dispute charge plus Measurement Canada fees (if meter found correct)",null,"$",30]
[]
[]
[]
[]
[]
[]
[]
[]
[]
[]
[]
[]
[]
[]
[]
[]
[]
[]
[]
[]
[]
[]
[]
[]
[]
[]
[]
["Non-Payment of Account"]
[]
["Late Payment – per month",null,"%",1.5]
["Late Payment – per annum",null,"%",19.559999999999999]
["Disconnect/Reconnect at meter – during regular hours",null,"$",65]
["Disconnect/Reconnect at meter – after regular hours",null,"$",185]
["Disconnect/Reconnect at pole – during regular hours",null,"$",185]
["Disconnect/Reconnect at pole – after regular hours",null,"$",415]
["Install/Remove load control device – during regular hours",null,"$",65]
["Install/Remove load control device – after regular hours",null,"$",185]
[]
[]
[]
[]
[]
[]
[]
[]
[]
[]
[]
[]
[]
[]
[]
[]
[]
["Other"]
[]
["Specific Charge for Access to the Power Poles - $/pole/year",null,"$",22.35]
["Layout fees",null,"$",200]
[]
[]
[]
[]
[]
[]
[]
[]
[]
[]
[]
[]
[]
[]
[]
[]
[]
[]
[]
[]
["RETAIL SERVICE CHARGES (if applicable)"]
[]
["The application of these rates and charges shall be in accordance with the Licence of the Distributor and any Code or Order of the Board, and amendments thereto as approved by the Board, which may be applicable to the administration of this schedule."]
[]
["No rates and charges for the distribution of electricity and charges to meet the costs of any work or service done or furnished for the purpose of the distribution of electricity shall be made except as permitted by this schedule, unless required by the Distributor’s Licence or a Code or Order of the Board, and amendments thereto as approved by the Board, or as specified herein."]
[]
["Unless specifically noted, this schedule does not contain any charges for the electricity commodity, be it under the Regulated Price Plan, a contract with a retailer or the wholesale market price, as applicable."]
[]
["It should be noted that this schedule does not list any charges, assessments or credits that are required by law to be invoiced by a distributor and that are not subject to Board approval, such as the Debt Retirement Charge, the Global Adjustment, the Ontario Clean Energy Benefit and the HST."]
[]
["Retail Service Charges refer to services provided by a distributor to retailers or customers related to the supply of competitive electricity."]
[]
["One-time charge, per retailer, to establish the service agreement between the distributor and the retailer",null,"$",100]
["Monthly Fixed Charge, per retailer",null,"$",20]
["Monthly Variable Charge, per customer, per retailer",null,"$/cust.",0.5]
["Distributor-consolidated billing monthly charge, per customer, per retailer",null,"$/cust.",0.3]
["Retailer-consolidated billing monthly credit, per customer, per retailer",null,"$/cust.",-0.3]
["Service Transaction Requests (STR) "]
["Request fee, per request, applied to the requesting party",null,"$",0.25]
["Processing fee, per request, applied to the requesting party",null,"$",0.5]
["Request for customer information as outlined in Section 10.6.3 and Chapter 11 of the Retail"]
["Settlement Code directly to retailers and customers, if not delivered electronically through the"]
["Electronic Business Transaction (EBT) system, applied to the requesting party "]
["Up to twice a year",null,"$","no charge"]
["More than twice a year, per request (plus incremental delivery costs)",null,"$",2]
[]
["LOSS FACTORS"]
[]
["If the distributor is not capable of prorating changed loss factors jointly with distribution rates, the revised loss factors will be implemented upon the first subsequent billing for each billing cycle."]
[]
[]
["Distribution Loss Factor - Secondary Metered Customer < 5,000 kW",null,null,1.0392999999999999]
["Distribution Loss Factor - Secondary Metered Customer > 5,000 kW",null,null,1.0187999999999999]
["Distribution Loss Factor - Primary Metered Customer < 5,000 kW",null,null,1.0288999999999999]
["Distribution Loss Factor - Primary Metered Customer > 5,000 kW",null,null,1.0085999999999999]

{"sheet":"App. 2-Z_2018 Tariff","index":28,"n_rows":570,"n_cols":4,"rows_kept":570,"cut":false,"hidden":false,"merged":[[566,0,566,1],[567,0,567,1],[568,0,568,1],[569,0,569,1],[570,0,570,1],[571,0,571,1],[556,0,556,1],[557,0,557,1],[558,0,558,1],[559,0,559,1],[563,0,563,3],[563,4,563,7],[550,0,550,1],[551,0,551,1],[552,0,552,1],[553,0,553,1],[554,0,554,1],[555,0,555,1],[545,0,545,3],[545,4,545,7],[547,0,547,1],[547,4,547,5],[548,0,548,1],[549,0,549,1],[542,0,542,3],[542,4,542,7],[543,0,543,3],[543,4,543,7],[544,0,544,3],[544,4,544,7],[539,0,539,3],[539,4,539,7],[540,0,540,3],[540,4,540,7],[541,0,541,3],[541,4,541,7],[532,0,532,1],[533,0,533,1],[537,0,537,3],[537,4,537,7],[538,0,538,3],[538,4,538,7],[526,0,526,1],[527,0,527,1],[528,0,528,1],[529,0,529,1],[530,0,530,1],[531,0,531,1],[520,0,520,1],[521,0,521,1],[522,0,522,1],[523,0,523,1],[524,0,524,1],[525,0,525,1],[514,0,514,1],[515,0,515,1],[516,0,516,1],[517,0,517,1],[518,0,518,1],[519,0,519,1],[506,0,506,1],[507,0,507,1],[508,0,508,1],[509,0,509,1],[510,0,510,1],[513,0,513,1],[500,0,500,1],[501,0,501,1],[502,0,502,1],[503,0,503,1],[504,0,504,1],[505,0,505,1],[494,0,494,1],[495,0,495,1],[496,0,496,1],[497,0,497,1],[498,0,498,1],[499,0,499,1],[488,0,488,1],[489,0,489,1],[490,0,490,1],[491,0,491,1],[492,0,492,1],[493,0,493,1],[479,0,479,1],[480,0,480,1],[481,0,481,1],[482,0,482,1],[486,0,486,1],[487,0,487,1],[473,0,473,1],[474,0,474,1],[475,0,475,1],[476,0,476,1],[477,0,477,1],[478,0,478,1],[467,0,467,1],[468,0,468,1],[469,0,469,1],[470,0,470,1],[471,0,471,1],[472,0,472,1],[461,0,461,1],[462,0,462,1],[463,0,463,1],[464,0,464,1],[465,0,465,1],[466,0,466,1],[455,0,455,1],[456,0,456,1],[457,0,457,1],[458,0,458,1],[459,0,459,1],[460,0,460,1],[449,0,449,1],[450,0,450,1],[451,0,451,1],[452,0,452,1],[453,0,453,1],[454,0,454,1],[440,0,440,3],[442,0,442,3],[442,4,442,7],[444,0,444,3],[444,4,444,7],[448,0,448,1],[426,0,426,1],[427,0,427,1],[431,0,431,1],[432,0,432,1],[433,0,433,1],[434,0,434,1],[417,0,417,1],[418,0,418,1],[419,0,419,1],[420,0,420,1],[421,0,421,1],[425,0,425,1],[411,0,411,1],[412,0,412,1],[413,0,413,1],[414,0,414,1],[415,0,415,1],[416,0,416,1],[405,0,405,1],[406,0,406,1],[407,0,407,1],[408,0,408,1],[409,0,409,1],[410,0,410,1],[399,0,399,1],[400,0,400,1],[401,0,401,1],[402,0,402,1],[403,0,403,1],[404,0,404,1],[393,0,393,1],[394,0,394,1],[395,0,395,1],[396,0,396,1],[397,0,397,1],[398,0,398,1],[382,0,382,3],[385,0,385,3],[386,0,386,3],[387,0,387,3],[388,0,388,3],[392,0,392,1],[372,0,372,1],[373,0,373,1],[377,0,377,1],[378,0,378,1],[379,0,379,1],[380,0,380,3],[366,0,366,1],[367,0,367,1],[368,0,368,1],[369,0,369,1],[370,0,370,1],[371,0,371,1],[360,0,360,1],[361,0,361,1],[362,0,362,1],[363,0,363,1],[364,0,364,1],[365,0,365,1],[354,0,354,1],[355,0,355,1],[356,0,356,1],[357,0,357,1],[358,0,358,1],[359,0,359,1],[348,0,348,1],[349,0,349,1],[350,0,350,1],[351,0,351,1],[352,0,352,1],[353,0,353,1],[339,0,339,3],[340,0,340,3],[344,0,344,1],[345,0,345,1],[346,0,346,1],[347,0,347,1],[330,0,330,1],[331,0,331,1],[332,0,332,3],[334,0,334,3],[337,0,337,3],[338,0,338,3],[321,0,321,1],[322,0,322,1],[323,0,323,1],[324,0,324,1],[325,0,325,1],[329,0,329,1],[315,0,315,1],[316,0,316,1],[317,0,317,1],[318,0,318,1],[319,0,319,1],[320,0,320,1],[309,0,309,1],[310,0,310,1],[311,0,311,1],[312,0,312,1],[313,0,313,1],[314,0,314,1],[303,0,303,1],[304,0,304,1],[305,0,305,1],[306,0,306,1],[307,0,307,1],[308,0,308,1],[297,0,297,1],[298,0,298,1],[299,0,299,1],[300,0,300,1],[301,0,301,1],[302,0,302,1],[286,0,286,3],[289,0,289,3],[290,0,290,3],[291,0,291,3],[292,0,292,3],[296,0,296,1],[276,0,276,1],[277,0,277,1],[281,0,281,1],[282,0,282,1],[283,0,283,1],[284,0,284,3],[270,0,270,1],[271,0,271,1],[272,0,272,1],[273,0,273,1],[274,0,274,1],[275,0,275,1],[264,0,264,1],[265,0,265,1],[266,0,266,1],[267,0,267,1],[268,0,268,1],[269,0,269,1],[258,0,258,1],[259,0,259,1],[260,0,260,1],[261,0,261,1],[262,0,262,1],[263,0,263,1],[252,0,252,1],[253,0,253,1],[254,0,254,1],[255,0,255,1],[256,0,256,1],[257,0,257,1],[243,0,243,3],[244,0,244,3],[248,0,248,1],[249,0,249,1],[250,0,250,1],[251,0,251,1],[234,0,234,1],[235,0,235,1],[236,0,236,3],[238,0,238,3],[241,0,241,3],[242,0,242,3],[225,0,225,1],[226,0,226,1],[227,0,227,1],[228,0,228,1],[229,0,229,1],[233,0,233,1],[219,0,219,1],[220,0,220,1],[221,0,221,1],[222,0,222,1],[223,0,223,1],[224,0,224,1],[213,0,213,1],[214,0,214,1],[215,0,215,1],[216,0,216,1],[217,0,217,1],[218,0,218,1],[207,0,207,1],[208,0,208,1],[209,0,209,1],[210,0,210,1],[211,0,211,1],[212,0,212,1],[201,0,201,1],[202,0,202,1],[203,0,203,1],[204,0,204,1],[205,0,205,1],[206,0,206,1],[190,0,190,3],[193,0,193,3],[194,0,194,3],[195,0,195,3],[196,0,196,3],[200,0,200,1],[180,0,180,1],[181,0,181,1],[185,0,185,1],[186,0,186,1],[187,0,187,1],[188,0,188,3],[174,0,174,1],[175,0,175,1],[176,0,176,1],[177,0,177,1],[178,0,178,1],[179,0,179,1],[168,0,168,1],[169,0,169,1],[170,0,170,1],[171,0,171,1],[172,0,172,1],[173,0,173,1],[162,0,162,1],[163,0,163,1],[164,0,164,1],[165,0,165,1],[166,0,166,1],[167,0,167,1],[156,0,156,1],[157,0,157,1],[158,0,158,1],[159,0,159,1],[160,0,160,1],[161,0,161,1],[147,0,147,3],[148,0,148,3],[152,0,152,1],[153,0,153,1],[154,0,154,1],[155,0,155,1],[138,0,138,1],[139,0,139,1],[140,0,140,3],[142,0,142,3],[145,0,145,3],[146,0,146,3],[129,0,129,1],[130,0,130,1],[131,0,131,1],[132,0,132,1],[133,0,133,1],[137,0,137,1],[123,0,123,1],[124,0,124,1],[125,0,125,1],[126,0,126,1],[127,0,127,1],[128,0,128,1],[117,0,117,1],[118,0,118,1],[119,0,119,1],[120,0,120,1],[121,0,121,1],[122,0,122,1],[111,0,111,1],[112,0,112,1],[113,0,113,1],[114,0,114,1],[115,0,115,1],[116,0,116,1],[105,0,105,1],[106,0,106,1],[107,0,107,1],[108,0,108,1],[109,0,109,1],[110,0,110,1],[94,0,94,3],[97,0,97,3],[98,0,98,3],[99,0,99,3],[100,0,100,3],[104,0,104,1],[84,0,84,1],[85,0,85,1],[89,0,89,1],[90,0,90,1],[91,0,91,1],[92,0,92,3],[78,0,78,1],[79,0,79,1],[80,0,80,1],[81,0,81,1],[82,0,82,1],[83,0,83,1],[72,0,72,1],[73,0,73,1],[74,0,74,1],[75,0,75,1],[76,0,76,1],[77,0,77,1],[66,0,66,1],[67,0,67,1],[68,0,68,1],[69,0,69,1],[70,0,70,1],[71,0,71,1],[60,0,60,1],[61,0,61,1],[62,0,62,1],[63,0,63,1],[64,0,64,1],[65,0,65,1],[51,0,51,3],[52,0,52,3],[56,0,56,1],[57,0,57,1],[58,0,58,1],[59,0,59,1],[41,0,41,3],[42,0,42,3],[44,0,44,3],[46,0,46,3],[49,0,49,3],[50,0,50,3],[24,0,24,3],[25,0,25,3],[36,0,36,3],[37,0,37,3],[38,0,38,3],[40,0,40,3],[18,0,18,3],[19,0,19,3],[20,0,20,3],[21,0,21,3],[22,0,22,3],[23,0,23,3],[7,0,7,3],[9,0,9,3],[10,0,10,3],[12,0,12,1],[14,0,14,3],[17,0,17,3],[0,2,0,3],[1,2,1,3],[2,2,2,3],[3,2,3,3],[4,2,4,3],[6,2,6,3]]}
[null,"File Number:",{"$f":"EBNUMBER","v":"EB-2015-0083"}]
[null,"Exhibit:"]
[null,"Tab:"]
[null,"Schedule:"]
[null,"Page:"]
[]
[null,"Date:"]
["Appendix 2-Z\nProposed Tariff of Rates and Charges"]
[]
["For each class, Applicants are required to copy and paste the class descriptions (located directly under the class name) and the description of the applicability of those rates (description is found under the class name and directly under the word \"APPLICATION\").  By using the drop-down lists located under the column labeled \"Rate Description\", please select the descriptions of the rates and charges that BEST MATCHES the descriptions on your most recent Board-Approved Tariff of Rates and Charges.  If the description is not found in the drop-down list, please enter the description in the green shaded cells under the correct class exactly as it appears on the tariff.   Please do not enter more than one \"Service Charge\" for each class for which a base monthly fixed charge applies.  All rate rider descriptions should begin with \"Rate Rider for...\"."]
["Select the appropriate rate classes as they appear on your most recent Board-Approved Tariff of Rates and Charges, including the MicroFit Class."]
[]
["How many classes are listed on your most recent Board-Approved Tariff of Rates and Charges?",null,8]
[]
["Identify Your Rate Classes in the Blue Cells below.  Rate class names can be selected from the pull-dwon menu.  Please ensure that a rate class is assigned to each shaded cell.\n"]
[]
[]
["List of Rate Classes"]
["RESIDENTIAL"]
["GENERAL SERVICE LESS THAN 50 KW"]
["GENERAL SERVICE 50 TO 4,999 KW"]
["LARGE USE"]
["UNMETERED SCATTERED LOAD"]
["STANDBY POWER"]
["STREET LIGHTING"]
["MicroFIT"]
[]
[]
[]
[]
[]
[]
[]
[]
["Once all blue shaded cells above are filled out, press the following button to create your tariff template"]
[]
[{"$f":"'[2]LDC Info'!E14","v":"Kingston Hydro Corporation"}]
["TARIFF OF RATES AND CHARGES"]
[{"$f":"\"Effective and Implementation Date January 1, 2018\"","v":"Effective and Implementation Date January 1, 2018"}]
[]
["This schedule supersedes and replaces all previously"]
["approved schedules of Rates, Charges and Loss Factors"]
[{"$f":"EBNUMBER","v":"EB-2015-0083"}]
[]
["RESIDENTIAL SERVICE CLASSIFICATION"]
[]
["This classification applies to an account taking electricity at 750 volts or less where the electricity is used exclusively in a separate metered living accommodation. Customers shall be residing in single-dwelling units that consist of a detached house or one unit of a semi-detached, duplex, triplex or quadruplex house, with a residential zoning. Separately metered dwellings within a town house complex or apartment building also qualify as residential customers. All customers are single-phase. Further servicing details are available in the distributor's Conditions of Service."]
["APPLICATION"]
[]
["The application of these rates and charges shall be in accordance with the Licence of the Distributor and any Code or Order of the Board, and amendments thereto as approved by the Board, which may be applicable to the administration of this schedule."]
["No rates and charges for the distribution of electricity and charges to meet the costs of any work or service done or furnished for the purpose of the distribution of electricity shall be made except as permitted by this schedule, unless required by the Distributor's Licence or a Code or Order of the Board, and amendments thereto as approved by the Board, or as specified herein."]
["Unless specifically noted, this schedule does not contain any charges for the electricity commodity, be it under the Regulated Price Plan, a contract with a retailer or the wholesale market price, as applicable. In addition, the charges in the MONTHLY RATES AND CHARGES - Regulatory Component of this schedule do not apply to a customer that is an embedded wholesale market participant."]
["It should be noted that this schedule does not list any changes, assessments or credits that are required by law to be invoiced by a distributor and that are not subject to Board approval, such as the Debt Retirement Charge, the Global Adjustment, the Ontario Clean Energy Benefit and the HST."]
[]
["MONTHLY RATES AND CHARGES - Delivery Component"]
[]
["Service Charge",null,"$",{"$f":"'Rates Summary'!$G$28","v":21.88}]
["Rate Rider for Smart Metering Entity Charge - effective until October 31, 2018",null,"$",{"$f":"'Rates Summary'!$D$16","v":0.78800000000000003}]
[]
[]
["Distribution Volumetric Rate",null,"$/kWh",{"$f":"'Rates Summary'!$G$40","v":4.1999999999999997E-3}]
["Low Voltage Service Rate",null,"$/kWh",{"$f":"'Rates Summary'!$C$15","v":1.1999999999999999E-3}]
["Retail Transmission Rate - Network Service Rate",null,"$/kWh",{"$f":"'Rates Summary'!$C$17","v":7.1000000000000004E-3}]
["Retail Transmission Rate - Line and Transformation Connection Service Rate",null,"$/kWh",{"$f":"'Rates Summary'!$C$18","v":5.5999999999999999E-3}]
[]
[]
[]
[]
[]
[]
[]
[]
[]
[]
[]
[]
[]
[]
[]
[]
[]
[]
[]
[]
[]
[]
[]
["MONTHLY RATES AND CHARGES - Regulatory Component"]
[]
["Wholesale Market Service Rate",null,"$/kWh",{"$f":"'Rates Summary'!$C$19","v":4.4000000000000003E-3}]
["Rural Rate Protection Charge",null,"$/kWh",{"$f":"'Rates Summary'!$C$20","v":1.2999999999999999E-3}]
["Standard Supply Service - Administrative Charge (if applicable)",null,"$",{"$f":"'Rates Summary'!$C$21","v":0.25}]
["GENERAL SERVICE LESS THAN 50 KW SERVICE CLASSIFICATION"]
[]
["This classification refers to a non residential account taking electricity at 750 volts or less whose monthly average peak demand is less than, or is forecast to be less than, 50 kW. Further servicing details are available in the distributor's Conditions of Service."]
["APPLICATION"]
[]
["The application of these rates and charges shall be in accordance with the Licence of the Distributor and any Code or Order of the Board, and amendments thereto as approved by the Board, which may be applicable to the administration of this schedule."]
["Unless specifically noted, this schedule does not contain any charges for the electricity commodity, be it under the Regulated Price Plan, a contract with a retailer or the wholesale market price, as applicable. In addition, the charges in the MONTHLY RATES AND CHARGES - Regulatory Component of this schedule do not apply to a customer that is an embedded wholesale market participant."]
["Unless specifically noted, this schedule does not contain any charges for the electricity commodity, be it under the Regulated Price Plan, a contract with a retailer or the wholesale market price, as applicable. In addition, the charges in the MONTHLY RATES AND CHARGES - Regulatory Component of this schedule do not apply to a customer that is an embedded wholesale market participant."]
["It should be noted that this schedule does not list any changes, assessments or credits that are required by law to be invoiced by a distributor and that are not subject to Board approval, such as the Debt Retirement Charge, the Global Adjustment, the Ontario Clean Energy Benefit and the HST."]
[]
["MONTHLY RATES AND CHARGES - Delivery Component"]
[]
["Service Charge",null,"$",{"$f":"'Rates Summary'!$G$29","v":14.94}]
["Rate Rider for Smart Metering Entity Charge - effective until October 31, 2018",null,"$",{"$f":"'Rates Summary'!$D$16","v":0.78800000000000003}]
[]
[]
["Distribution Volumetric Rate",null,"$/kWh",{"$f":"'Rates Summary'!$G$41","v":1.55E-2}]
["Low Voltage Service Rate",null,"$/kWh",{"$f":"'Rates Summary'!$D$15","v":1.1000000000000001E-3}]
["Retail Transmission Rate - Network Service Rate",null,"$/kWh",{"$f":"'Rates Summary'!$D$17","v":6.3E-3}]
["Retail Transmission Rate - Line and Transformation Connection Service Rate",null,"$/kWh",{"$f":"'Rates Summary'!$D$18","v":5.1000000000000004E-3}]
[]
[]
[]
[]
[]
[]
[]
[]
[]
[]
[]
[]
[]
[]
[]
[]
[]
[]
[]
[]
[]
[]
[]
["MONTHLY RATES AND CHARGES - Regulatory Component"]
[]
["Wholesale Market Service Rate",null,"$/kWh",{"$f":"'Rates Summary'!$D$19","v":4.4000000000000003E-3}]
["Rural Rate Protection Charge",null,"$/kWh",{"$f":"'Rates Summary'!$D$20","v":1.2999999999999999E-3}]
["Standard Supply Service - Administrative Charge (if applicable)",null,"$",{"$f":"'Rates Summary'!$D$21","v":0.25}]
["GENERAL SERVICE 50 TO 4,999 KW SERVICE CLASSIFICATION"]
[]
["This classification refers to a non residential account whose monthly average peak demand is equal to or greater than, or is forecast to be equal to or greater than, 50 kW but less than 5,000 kW. Further servicing details are available in th distributor's Conditions of Service."]
["APPLICATION"]
[]
["The application of these rates and charges shall be in accordance with the Licence of the Distributor and any Code or Order of the Board, and amendments thereto as approved by the Board, which may be applicable to the administration of this schedule."]
["No rates and charges for the distribution of electricity and charges to meet the costs of any work or service done or furnished for the purpose of the distribution of electricity shall be made except as permitted by this schedule, unless required by the Distributor's Licence or a Code or Order of the Board, and amendments thereto as approved by the Board, or as specified herein."]
["Unless specifically noted, this schedule does not contain any charges for the electricity commodity, be it under the Regulated Price Plan, a contract with a retailer or the wholesale market price, as applicable. In addition, the charges in the MONTHLY RATES AND CHARGES - Regulatory Component of this schedule do not apply to a customer that is an embedded wholesale market participant."]
["It should be noted that this schedule does not list any changes, assessments or credits that are required by law to be invoiced by a distributor and that are not subject to Board approval, such as the Debt Retirement Charge, the Global Adjustment, the Ontario Clean Energy Benefit and the HST."]
[]
["MONTHLY RATES AND CHARGES - Delivery Component"]
[]
["Service Charge",null,"$",{"$f":"'Rates Summary'!$G$30","v":109.29}]
["Distribution Volumetric Rate",null,"$/kW",{"$f":"'Rates Summary'!$G$42","v":3.2130000000000001}]
["Low Voltage Service Rate",null,"$/kW",{"$f":"'Rates Summary'!$E$15","v":0.46629999999999999}]
["Retail Transmission Rate - Network Service Rate",null,"$/kW",{"$f":"'Rates Summary'!$E$17","v":2.7797000000000001}]
["Retail Transmission Rate - Line and Transformation Connection Service Rate",null,"$/kW",{"$f":"'Rates Summary'!$E$18","v":2.2225000000000001}]
[]
[]
[]
[]
[]
[]
[]
[]
[]
[]
[]
[]
[]
[]
[]
[]
[]
[]
[]
[]
[]
[]
[]
[]
[]
[]
["MONTHLY RATES AND CHARGES - Regulatory Component"]
[]
["Wholesale Market Service Rate",null,"$/kWh",{"$f":"'Rates Summary'!$E$19","v":4.4000000000000003E-3}]
["Rural Rate Protection Charge",null,"$/kWh",{"$f":"'Rates Summary'!$E$20","v":1.2999999999999999E-3}]
["Standard Supply Service - Administrative Charge (if applicable)",null,"$",{"$f":"'Rates Summary'!$E$21","v":0.25}]
["LARGE USE SERVICE CLASSIFICATION"]
[]
["This classification refers to an account whose monthly average peak demand is equal to or greater than, or is forecast to be equal to or greater than, 5,000 kW. Further servicing details are available in the distributor's Conditions of Service."]
["APPLICATION"]
[]
["The application of these rates and charges shall be in accordance with the Licence of the Distributor and any Code or Order of the Board, and amendments thereto as approved by the Board, which may be applicable to the administration of this schedule."]
["No rates and charges for the distribution of electricity and charges to meet the costs of any work or service done or furnished for the purpose of the distribution of electricity shall be made except as permitted by this schedule, unless required by the Distributor's Licence or a Code or Order of the Board, and amendments thereto as approved by the Board, or as specified herein."]
["Unless specifically noted, this schedule does not contain any charges for the electricity commodity, be it under the Regulated Price Plan, a contract with a retailer or the wholesale market price, as applicable. In addition, the charges in the MONTHLY RATES AND CHARGES - Regulatory Component of this schedule do not apply to a customer that is an embedded wholesale market participant."]
["It should be noted that this schedule does not list any changes, assessments or credits that are required by law to be invoiced by a distributor and that are not subject to Board approval, such as the Debt Retirement Charge, the Global Adjustment, the Ontario Clean Energy Benefit and the HST."]
[]
["MONTHLY RATES AND CHARGES - Delivery Component"]
[]
["Service Charge",null,"$",{"$f":"'Rates Summary'!$G$31","v":5164}]
["Distribution Volumetric Rate",null,"$/kW",{"$f":"'Rates Summary'!$G$43","v":1.2749999999999999}]
["Low Voltage Service Rate",null,"$/kW",{"$f":"'Rates Summary'!$F$15","v":0.56189999999999996}]
["Retail Transmission Rate - Network Service Rate",null,"$/kW",{"$f":"'Rates Summary'!$F$17","v":3.3492000000000002}]
["Retail Transmission Rate - Line and Transformation Connection Service Rate",null,"$/kW",{"$f":"'Rates Summary'!$F$18","v":2.6779999999999999}]
[]
[]
[]
[]
[]
[]
[]
[]
[]
[]
[]
[]
[]
[]
[]
[]
[]
[]
[]
[]
[]
[]
[]
[]
[]
[]
["MONTHLY RATES AND CHARGES - Regulatory Component"]
[]
["Wholesale Market Service Rate",null,"$/kWh",{"$f":"'Rates Summary'!$F$19","v":4.4000000000000003E-3}]
["Rural Rate Protection Charge",null,"$/kWh",{"$f":"'Rates Summary'!$F$20","v":1.2999999999999999E-3}]
["Standard Supply Service - Administrative Charge (if applicable)",null,"$",{"$f":"'Rates Summary'!$F$21","v":0.25}]
["UNMETERED SCATTERED LOAD SERVICE CLASSIFICATION"]
[]
["This classification refers to an account taking electricity at 750 volts or less whose monthly average peak demand is less than, or is forecast to be less than, 50 kW and the consumption is unmetered. Such connections include cable TV power packs, bus shelters, telephone booths, traffic lights, railway crossings, etc. The customer will provide detailed manufacturer information/documentation with regard to electrical demand/consumption of the proposed unmetered load. Further servicing details are available in the distributor's Conditons of Service."]
["APPLICATION"]
[]
["The application of these rates and charges shall be in accordance with the Licence of the Distributor and any Code or Order of the Board, and amendments thereto as approved by the Board, which may be applicable to the administration of this schedule."]
["No rates and charges for the distribution of electricity and charges to meet the costs of any work or service done or furnished for the purpose of the distribution of electricity shall be made except as permitted by this schedule, unless required by the Distributor's Licence or a Code or Order of the Board, and amendments thereto as approved by the Board, or as specified herein."]
["Unless specifically noted, this schedule does not contain any charges for the electricity commodity, be it under the Regulated Price Plan, a contract with a retailer or the wholesale market price, as applicable. In addition, the charges in the MONTHLY RATES AND CHARGES - Regulatory Component of this schedule do not apply to a customer that is an embedded wholesale market participant."]
["It should be noted that this schedule does not list any changes, assessments or credits that are required by law to be invoiced by a distributor and that are not subject to Board approval, such as the Debt Retirement Charge, the Global Adjustment, the Ontario Clean Energy Benefit and the HST."]
[]
["MONTHLY RATES AND CHARGES - Delivery Component"]
[]
["Service Charge (per customer)",null,"$",{"$f":"'Rates Summary'!$G$32","v":6.1}]
["Distribution Volumetric Rate",null,"$/kWh",{"$f":"'Rates Summary'!$G$44","v":1.21E-2}]
["Low Voltage Service Rate",null,"$/kWh",{"$f":"'Rates Summary'!$G$15","v":1.1999999999999999E-3}]
["Retail Transmission Rate - Network Service Rate",null,"$/kWh",{"$f":"'Rates Summary'!$G$17","v":7.1000000000000004E-3}]
["Retail Transmission Rate - Line and Transformation Connection Service Rate",null,"$/kWh",{"$f":"'Rates Summary'!$G$18","v":5.5999999999999999E-3}]
[]
[]
[]
[]
[]
[]
[]
[]
[]
[]
[]
[]
[]
[]
[]
[]
[]
[]
[]
[]
[]
[]
[]
[]
[]
[]
["MONTHLY RATES AND CHARGES - Regulatory Component"]
[]
["Wholesale Market Service Rate",null,"$/kWh",{"$f":"'Rates Summary'!$G$19","v":4.4000000000000003E-3}]
["Rural Rate Protection Charge",null,"$/kWh",{"$f":"'Rates Summary'!$H$20","v":1.2999999999999999E-3}]
["Standard Supply Service - Administrative Charge (if applicable)",null,"$",{"$f":"'Rates Summary'!$H$21","v":0.25}]
["STANDBY POWER on a FINAL BASIS SERVICE CLASSIFICATION"]
[]
["This classification refers to an account that has Load Displacement Generation and requires Kingston Hydro Corporation to provide back-up service. Further servicing details are available in the distributors's Conditions of Service."]
["APPLICATION"]
[]
["The application of these rates and charges shall be in accordance with the Licence of the Distributor and any Code or Order of the Board, and amendments thereto as approved by the Board, which may be applicable to the administration of this schedule."]
["No rates and charges for the distribution of electricity and charges to meet the costs of any work or service done or furnished for the purpose of the distribution of electricity shall be made except as permitted by this schedule, unless required by the Distributor's Licence or a Code or Order of the Board, and amendments thereto as approved by the Board, or as specified herein."]
["Unless specifically noted, this schedule does not contain any charges for the electricity commodity, be it under the Regulated Price Plan, a contract with a retailer or the wholesale market price, as applicable. In addition, the charges in the MONTHLY RATES AND CHARGES - Regulatory Component of this schedule do not apply to a customer that is an embedded wholesale market participant."]
["It should be noted that this schedule does not list any changes, assessments or credits that are required by law to be invoiced by a distributor and that are not subject to Board approval, such as the Debt Retirement Charge, the Global Adjustment, the Ontario Clean Energy Benefit and the HST."]
[]
["MONTHLY RATES AND CHARGES - Delivery Component"]
[]
["Standby Charges are to be applied to behind-the-meter generators that are not IESO market participants, FIT program participants, net-metered generators or retail generators, which have their own metering and settlement conventions as per regulation and legislation. \n\nStandby Charges are based on applicable applicable monthly General Service < 50kW,  General Service > 50kW to 4,999 kW or Large Use Distribution Volumetric Charges, depending on the rate classification of the generator host facility.\n\nIn the case where utility grade metering is not installed on the generator, Distribution Charges on the generator host facility’s load account will be determined by multiplying the peak hourly delivered load as measured by the load account meter in kW by applicable variable charges for the rate class. Standby Charges are determined by multiplying the nameplate capacity of the behind the meter generator in KW by applicable Standby Power charges in each month. \n\nThis type of scenario is preferable for our customers if the generator is a “baseload” or “24-7-365” generator such as a fuel cell CHP unit or pressure-drop turbine unit. It may also be preferable to the customer where the cost of utility grade metering is high or the size of the generator is very small relative to the demand of the host load customer. \n\nIn the case where utility grade metering is installed on the generator, Distribution Charges on the generator host facility’s load account will be determined by multiplying the peak hourly delivered load as measured by the load account meter in kW by applicable variable charges for the rate class. Standby Charges will be determined by multiplying the peak coincident combined kW delivered by both the distribution system and the generator, less the peak hourly delivered load in kW of the host customer facility as measured by the generator host load account meter.\n\nThis type of scenario is preferable for customers who wish to use generators or electricity storage facilities to participate in provincial conservation initiatives such as the IESO’s Demand Response or Industrial Conservation Initiatives, or reduce kWh consumption to contribute towards Kingston Hydro’s 2020 Conservation Targets, but are not able to operate their generators “24-7-365”.\n"]
[]
[]
[]
[]
[]
[]
[]
[]
[]
[]
[]
[]
[]
[]
[]
[]
[]
[]
[]
[]
[]
[]
[]
[]
[]
[]
[]
[]
[]
[]
["MONTHLY RATES AND CHARGES - Regulatory Component"]
[]
[]
[]
[]
["STREET LIGHTING SERVICE CLASSIFICATION"]
[]
["This classification refers to an account for roadway lighting with a Municipality, Regional Municipality, Ministry of Transportation and private roadway lighting operation, controlled by photo cells. The consumption for these customers will be based on the calculated connected load times the required lighting times established in the approved OEB street lighting load shape template. Further servicing details are available in the distributor's Conditions of Service."]
["APPLICATION"]
[]
["The application of these rates and charges shall be in accordance with the Licence of the Distributor and any Code or Order of the Board, and amendments thereto as approved by the Board, which may be applicable to the administration of this schedule."]
["No rates and charges for the distribution of electricity and charges to meet the costs of any work or service done or furnished for the purpose of the distribution of electricity shall be made except as permitted by this schedule, unless required by the Distributor's Licence or a Code or Order of the Board, and amendments thereto as approved by the Board, or as specified herein."]
["Unless specifically noted, this schedule does not contain any charges for the electricity commodity, be it under the Regulated Price Plan, a contract with a retailer or the wholesale market price, as applicable. In addition, the charges in the MONTHLY RATES AND CHARGES - Regulatory Component of this schedule do not apply to a customer that is an embedded wholesale market participant."]
["It should be noted that this schedule does not list any changes, assessments or credits that are required by law to be invoiced by a distributor and that are not subject to Board approval, such as the Debt Retirement Charge, the Global Adjustment, the Ontario Clean Energy Benefit and the HST."]
[]
["MONTHLY RATES AND CHARGES - Delivery Component"]
[]
["Service Charge (per light)",null,"$",{"$f":"'Rates Summary'!$G$33","v":1.24}]
["Distribution Volumetric Rate",null,"$/kW",{"$f":"'Rates Summary'!$G$45","v":14.041700000000001}]
["Low Voltage Service Rate",null,"$/kW",{"$f":"'Rates Summary'!$H$15","v":0.33679999999999999}]
["Retail Transmission Rate - Network Service Rate",null,"$/kW",{"$f":"'Rates Summary'!$H$17","v":2.0078}]
["Retail Transmission Rate - Line and Transformation Connection Service Rate",null,"$/kW",{"$f":"'Rates Summary'!$H$18","v":1.6052999999999999}]
[]
[]
[]
[]
[]
[]
[]
[]
[]
[]
[]
[]
[]
[]
[]
[]
[]
[]
[]
[]
[]
[]
[]
[]
[]
[]
["MONTHLY RATES AND CHARGES - Regulatory Component"]
[]
["Wholesale Market Service Rate",null,"$/kWh",{"$f":"'Rates Summary'!$H$19","v":4.4000000000000003E-3}]
["Rural Rate Protection Charge",null,"$/kWh",{"$f":"'Rates Summary'!$H$20","v":1.2999999999999999E-3}]
["Standard Supply Service - Administrative Charge (if applicable)",null,"$",{"$f":"'Rates Summary'!$H$21","v":0.25}]
["MicroFIT SERVICE CLASSIFICATION"]
[]
["This classification applies to an electricity generation facility contracted under the Ontario Power Authority's microFIT program and connected to the distributor's distribution system. Further servicing details are available in the distributor's Conditions of Service."]
["APPLICATION"]
[]
["The application of these rates and charges shall be in accordance with the Licence of the Distributor and any Code or Order of the Board, and amendments thereto as approved by the Board, which may be applicable to the administration of this schedule."]
["No rates and charges for the distribution of electricity and charges to meet the costs of any work or service done or furnished for the purpose of the distribution of electricity shall be made except as permitted by this schedule, unless required by the Distributor's Licence or a Code or Order of the Board, and amendments thereto as approved by the Board, or as specified herein."]
["Unless specifically noted, this schedule does not contain any charges for the electricity commodity, be it under the Regulated Price Plan, a contract with a retailer or the wholesale market price, as applicable. In addition, the charges in the MONTHLY RATES AND CHARGES - Regulatory Component of this schedule do not apply to a customer that is an embedded wholesale market participant."]
["It should be noted that this schedule does not list any changes, assessments or credits that are required by law to be invoiced by a distributor and that are not subject to Board approval, such as the Debt Retirement Charge, the Global Adjustment, the Ontario Clean Energy Benefit and the HST."]
[]
["MONTHLY RATES AND CHARGES - Delivery Component"]
[]
["Service Charge",null,"$",5.4]
[]
[]
[]
[]
[]
[]
[]
[]
[]
[]
[]
[]
[]
[]
[]
[]
[]
[]
[]
[]
[]
[]
[]
[]
[]
[]
[]
[]
[]
[]
["MONTHLY RATES AND CHARGES - Regulatory Component"]
[]
["Wholesale Market Service Rate",null,"$/kWh",4.4000000000000003E-3]
["Rural Rate Protection Charge",null,"$/kWh",1.2999999999999999E-3]
["Standard Supply Service - Administrative Charge (if applicable)",null,"$",0.25]
[]
["ALLOWANCES"]
[]
["Transformer Allowance for Ownership - per kW of billing demand/month",null,"$/kW",-0.6]
[]
[]
["Primary Metering Allowance for transformer losses – applied to measured demand and energy",null,"%",-1]
[]
["SPECIFIC SERVICE CHARGES"]
[]
["APPLICATION"]
[]
["The application of these rates and charges shall be in accordance with the Licence of the Distributor and any Code or Order of the Board, and amendments thereto as approved by the Board, which may be applicable to the administration of this schedule."]
[]
["No charges to meet the costs of any work or service done or furnished for the purpose of the distribution of electricity shall be made except as permitted by this schedule, unless required by the Distributor’s Licence or a Code or Order of the Board, and amendments thereto as approved by the Board, or as specified herein."]
[]
["It should be noted that this schedule does not list any charges, assessments or credits that are required by law to be invoiced by a distributor and that are not subject to Board approval, such as the Debt Retirement Charge, the Global Adjustment, the Ontario Clean Energy Benefit and the HST."]
[]
["Customer Administration"]
[]
["Arrears certificate",null,"$",15]
["Statement of Account",null,"$",15]
["Request for other billing information",null,"$",15]
["Account History",null,"$",15]
["Returned cheque (plus bank charges)",null,"$",15]
["Legal letter",null,"$",15]
["Account set up charge/change of occupancy charge (plus credit agency costs if applicable)",null,"$",15]
["Special meter reads",null,"$",30]
["Meter dispute charge plus Measurement Canada fees (if meter found correct)",null,"$",30]
[]
[]
[]
[]
[]
[]
[]
[]
[]
[]
[]
[]
[]
[]
[]
[]
[]
[]
[]
[]
[]
[]
[]
[]
[]
[]
[]
["Non-Payment of Account"]
[]
["Late Payment – per month",null,"%",1.5]
["Late Payment – per annum",null,"%",19.559999999999999]
["Disconnect/Reconnect at meter – during regular hours",null,"$",65]
["Disconnect/Reconnect at meter – after regular hours",null,"$",185]
["Disconnect/Reconnect at pole – during regular hours",null,"$",185]
["Disconnect/Reconnect at pole – after regular hours",null,"$",415]
["Install/Remove load control device – during regular hours",null,"$",65]
["Install/Remove load control device – after regular hours",null,"$",185]
[]
[]
[]
[]
[]
[]
[]
[]
[]
[]
[]
[]
[]
[]
[]
[]
[]
["Other"]
[]
["Specific Charge for Access to the Power Poles - $/pole/year",null,"$",22.35]
["Layout fees",null,"$",200]
[]
[]
[]
[]
[]
[]
[]
[]
[]
[]
[]
[]
[]
[]
[]
[]
[]
[]
[]
[]
["RETAIL SERVICE CHARGES (if applicable)"]
[]
["The application of these rates and charges shall be in accordance with the Licence of the Distributor and any Code or Order of the Board, and amendments thereto as approved by the Board, which may be applicable to the administration of this schedule."]
[]
["No rates and charges for the distribution of electricity and charges to meet the costs of any work or service done or furnished for the purpose of the distribution of electricity shall be made except as permitted by this schedule, unless required by the Distributor’s Licence or a Code or Order of the Board, and amendments thereto as approved by the Board, or as specified herein."]
[]
["Unless specifically noted, this schedule does not contain any charges for the electricity commodity, be it under the Regulated Price Plan, a contract with a retailer or the wholesale market price, as applicable."]
[]
["It should be noted that this schedule does not list any charges, assessments or credits that are required by law to be invoiced by a distributor and that are not subject to Board approval, such as the Debt Retirement Charge, the Global Adjustment, the Ontario Clean Energy Benefit and the HST."]
[]
["Retail Service Charges refer to services provided by a distributor to retailers or customers related to the supply of competitive electricity."]
[]
["One-time charge, per retailer, to establish the service agreement between the distributor and the retailer",null,"$",100]
["Monthly Fixed Charge, per retailer",null,"$",20]
["Monthly Variable Charge, per customer, per retailer",null,"$/cust.",0.5]
["Distributor-consolidated billing monthly charge, per customer, per retailer",null,"$/cust.",0.3]
["Retailer-consolidated billing monthly credit, per customer, per retailer",null,"$/cust.",-0.3]
["Service Transaction Requests (STR) "]
["Request fee, per request, applied to the requesting party",null,"$",0.25]
["Processing fee, per request, applied to the requesting party",null,"$",0.5]
["Request for customer information as outlined in Section 10.6.3 and Chapter 11 of the Retail"]
["Settlement Code directly to retailers and customers, if not delivered electronically through the"]
["Electronic Business Transaction (EBT) system, applied to the requesting party "]
["Up to twice a year",null,"$","no charge"]
["More than twice a year, per request (plus incremental delivery costs)",null,"$",2]
[]
["LOSS FACTORS"]
[]
["If the distributor is not capable of prorating changed loss factors jointly with distribution rates, the revised loss factors will be implemented upon the first subsequent billing for each billing cycle."]
[]
[]
["Distribution Loss Factor - Secondary Metered Customer < 5,000 kW",null,null,1.0392999999999999]
["Distribution Loss Factor - Secondary Metered Customer > 5,000 kW",null,null,1.0187999999999999]
["Distribution Loss Factor - Primary Metered Customer < 5,000 kW",null,null,1.0288999999999999]
["Distribution Loss Factor - Primary Metered Customer > 5,000 kW",null,null,1.0085999999999999]

{"sheet":"App. 2-Z_2019 Tariff","index":29,"n_rows":570,"n_cols":4,"rows_kept":570,"cut":false,"hidden":false,"merged":[[566,0,566,1],[567,0,567,1],[568,0,568,1],[569,0,569,1],[570,0,570,1],[571,0,571,1],[556,0,556,1],[557,0,557,1],[558,0,558,1],[559,0,559,1],[563,0,563,3],[563,4,563,7],[550,0,550,1],[551,0,551,1],[552,0,552,1],[553,0,553,1],[554,0,554,1],[555,0,555,1],[545,0,545,3],[545,4,545,7],[547,0,547,1],[547,4,547,5],[548,0,548,1],[549,0,549,1],[542,0,542,3],[542,4,542,7],[543,0,543,3],[543,4,543,7],[544,0,544,3],[544,4,544,7],[539,0,539,3],[539,4,539,7],[540,0,540,3],[540,4,540,7],[541,0,541,3],[541,4,541,7],[532,0,532,1],[533,0,533,1],[537,0,537,3],[537,4,537,7],[538,0,538,3],[538,4,538,7],[526,0,526,1],[527,0,527,1],[528,0,528,1],[529,0,529,1],[530,0,530,1],[531,0,531,1],[520,0,520,1],[521,0,521,1],[522,0,522,1],[523,0,523,1],[524,0,524,1],[525,0,525,1],[514,0,514,1],[515,0,515,1],[516,0,516,1],[517,0,517,1],[518,0,518,1],[519,0,519,1],[506,0,506,1],[507,0,507,1],[508,0,508,1],[509,0,509,1],[510,0,510,1],[513,0,513,1],[500,0,500,1],[501,0,501,1],[502,0,502,1],[503,0,503,1],[504,0,504,1],[505,0,505,1],[494,0,494,1],[495,0,495,1],[496,0,496,1],[497,0,497,1],[498,0,498,1],[499,0,499,1],[488,0,488,1],[489,0,489,1],[490,0,490,1],[491,0,491,1],[492,0,492,1],[493,0,493,1],[479,0,479,1],[480,0,480,1],[481,0,481,1],[482,0,482,1],[486,0,486,1],[487,0,487,1],[473,0,473,1],[474,0,474,1],[475,0,475,1],[476,0,476,1],[477,0,477,1],[478,0,478,1],[467,0,467,1],[468,0,468,1],[469,0,469,1],[470,0,470,1],[471,0,471,1],[472,0,472,1],[461,0,461,1],[462,0,462,1],[463,0,463,1],[464,0,464,1],[465,0,465,1],[466,0,466,1],[455,0,455,1],[456,0,456,1],[457,0,457,1],[458,0,458,1],[459,0,459,1],[460,0,460,1],[449,0,449,1],[450,0,450,1],[451,0,451,1],[452,0,452,1],[453,0,453,1],[454,0,454,1],[440,0,440,3],[442,0,442,3],[442,4,442,7],[444,0,444,3],[444,4,444,7],[448,0,448,1],[426,0,426,1],[427,0,427,1],[431,0,431,1],[432,0,432,1],[433,0,433,1],[434,0,434,1],[417,0,417,1],[418,0,418,1],[419,0,419,1],[420,0,420,1],[421,0,421,1],[425,0,425,1],[411,0,411,1],[412,0,412,1],[413,0,413,1],[414,0,414,1],[415,0,415,1],[416,0,416,1],[405,0,405,1],[406,0,406,1],[407,0,407,1],[408,0,408,1],[409,0,409,1],[410,0,410,1],[399,0,399,1],[400,0,400,1],[401,0,401,1],[402,0,402,1],[403,0,403,1],[404,0,404,1],[393,0,393,1],[394,0,394,1],[395,0,395,1],[396,0,396,1],[397,0,397,1],[398,0,398,1],[382,0,382,3],[385,0,385,3],[386,0,386,3],[387,0,387,3],[388,0,388,3],[392,0,392,1],[372,0,372,1],[373,0,373,1],[377,0,377,1],[378,0,378,1],[379,0,379,1],[380,0,380,3],[366,0,366,1],[367,0,367,1],[368,0,368,1],[369,0,369,1],[370,0,370,1],[371,0,371,1],[360,0,360,1],[361,0,361,1],[362,0,362,1],[363,0,363,1],[364,0,364,1],[365,0,365,1],[354,0,354,1],[355,0,355,1],[356,0,356,1],[357,0,357,1],[358,0,358,1],[359,0,359,1],[348,0,348,1],[349,0,349,1],[350,0,350,1],[351,0,351,1],[352,0,352,1],[353,0,353,1],[339,0,339,3],[340,0,340,3],[344,0,344,1],[345,0,345,1],[346,0,346,1],[347,0,347,1],[330,0,330,1],[331,0,331,1],[332,0,332,3],[334,0,334,3],[337,0,337,3],[338,0,338,3],[321,0,321,1],[322,0,322,1],[323,0,323,1],[324,0,324,1],[325,0,325,1],[329,0,329,1],[315,0,315,1],[316,0,316,1],[317,0,317,1],[318,0,318,1],[319,0,319,1],[320,0,320,1],[309,0,309,1],[310,0,310,1],[311,0,311,1],[312,0,312,1],[313,0,313,1],[314,0,314,1],[303,0,303,1],[304,0,304,1],[305,0,305,1],[306,0,306,1],[307,0,307,1],[308,0,308,1],[297,0,297,1],[298,0,298,1],[299,0,299,1],[300,0,300,1],[301,0,301,1],[302,0,302,1],[286,0,286,3],[289,0,289,3],[290,0,290,3],[291,0,291,3],[292,0,292,3],[296,0,296,1],[276,0,276,1],[277,0,277,1],[281,0,281,1],[282,0,282,1],[283,0,283,1],[284,0,284,3],[270,0,270,1],[271,0,271,1],[272,0,272,1],[273,0,273,1],[274,0,274,1],[275,0,275,1],[264,0,264,1],[265,0,265,1],[266,0,266,1],[267,0,267,1],[268,0,268,1],[269,0,269,1],[258,0,258,1],[259,0,259,1],[260,0,260,1],[261,0,261,1],[262,0,262,1],[263,0,263,1],[252,0,252,1],[253,0,253,1],[254,0,254,1],[255,0,255,1],[256,0,256,1],[257,0,257,1],[243,0,243,3],[244,0,244,3],[248,0,248,1],[249,0,249,1],[250,0,250,1],[251,0,251,1],[234,0,234,1],[235,0,235,1],[236,0,236,3],[238,0,238,3],[241,0,241,3],[242,0,242,3],[225,0,225,1],[226,0,226,1],[227,0,227,1],[228,0,228,1],[229,0,229,1],[233,0,233,1],[219,0,219,1],[220,0,220,1],[221,0,221,1],[222,0,222,1],[223,0,223,1],[224,0,224,1],[213,0,213,1],[214,0,214,1],[215,0,215,1],[216,0,216,1],[217,0,217,1],[218,0,218,1],[207,0,207,1],[208,0,208,1],[209,0,209,1],[210,0,210,1],[211,0,211,1],[212,0,212,1],[201,0,201,1],[202,0,202,1],[203,0,203,1],[204,0,204,1],[205,0,205,1],[206,0,206,1],[190,0,190,3],[193,0,193,3],[194,0,194,3],[195,0,195,3],[196,0,196,3],[200,0,200,1],[180,0,180,1],[181,0,181,1],[185,0,185,1],[186,0,186,1],[187,0,187,1],[188,0,188,3],[174,0,174,1],[175,0,175,1],[176,0,176,1],[177,0,177,1],[178,0,178,1],[179,0,179,1],[168,0,168,1],[169,0,169,1],[170,0,170,1],[171,0,171,1],[172,0,172,1],[173,0,173,1],[162,0,162,1],[163,0,163,1],[164,0,164,1],[165,0,165,1],[166,0,166,1],[167,0,167,1],[156,0,156,1],[157,0,157,1],[158,0,158,1],[159,0,159,1],[160,0,160,1],[161,0,161,1],[147,0,147,3],[148,0,148,3],[152,0,152,1],[153,0,153,1],[154,0,154,1],[155,0,155,1],[138,0,138,1],[139,0,139,1],[140,0,140,3],[142,0,142,3],[145,0,145,3],[146,0,146,3],[129,0,129,1],[130,0,130,1],[131,0,131,1],[132,0,132,1],[133,0,133,1],[137,0,137,1],[123,0,123,1],[124,0,124,1],[125,0,125,1],[126,0,126,1],[127,0,127,1],[128,0,128,1],[117,0,117,1],[118,0,118,1],[119,0,119,1],[120,0,120,1],[121,0,121,1],[122,0,122,1],[111,0,111,1],[112,0,112,1],[113,0,113,1],[114,0,114,1],[115,0,115,1],[116,0,116,1],[105,0,105,1],[106,0,106,1],[107,0,107,1],[108,0,108,1],[109,0,109,1],[110,0,110,1],[94,0,94,3],[97,0,97,3],[98,0,98,3],[99,0,99,3],[100,0,100,3],[104,0,104,1],[84,0,84,1],[85,0,85,1],[89,0,89,1],[90,0,90,1],[91,0,91,1],[92,0,92,3],[78,0,78,1],[79,0,79,1],[80,0,80,1],[81,0,81,1],[82,0,82,1],[83,0,83,1],[72,0,72,1],[73,0,73,1],[74,0,74,1],[75,0,75,1],[76,0,76,1],[77,0,77,1],[66,0,66,1],[67,0,67,1],[68,0,68,1],[69,0,69,1],[70,0,70,1],[71,0,71,1],[60,0,60,1],[61,0,61,1],[62,0,62,1],[63,0,63,1],[64,0,64,1],[65,0,65,1],[51,0,51,3],[52,0,52,3],[56,0,56,1],[57,0,57,1],[58,0,58,1],[59,0,59,1],[41,0,41,3],[42,0,42,3],[44,0,44,3],[46,0,46,3],[49,0,49,3],[50,0,50,3],[24,0,24,3],[25,0,25,3],[36,0,36,3],[37,0,37,3],[38,0,38,3],[40,0,40,3],[18,0,18,3],[19,0,19,3],[20,0,20,3],[21,0,21,3],[22,0,22,3],[23,0,23,3],[7,0,7,3],[9,0,9,3],[10,0,10,3],[12,0,12,1],[14,0,14,3],[17,0,17,3],[0,2,0,3],[1,2,1,3],[2,2,2,3],[3,2,3,3],[4,2,4,3],[6,2,6,3]]}
[null,"File Number:",{"$f":"EBNUMBER","v":"EB-2015-0083"}]
[null,"Exhibit:"]
[null,"Tab:"]
[null,"Schedule:"]
[null,"Page:"]
[]
[null,"Date:"]
["Appendix 2-Z\nProposed Tariff of Rates and Charges"]
[]
["For each class, Applicants are required to copy and paste the class descriptions (located directly under the class name) and the description of the applicability of those rates (description is found under the class name and directly under the word \"APPLICATION\").  By using the drop-down lists located under the column labeled \"Rate Description\", please select the descriptions of the rates and charges that BEST MATCHES the descriptions on your most recent Board-Approved Tariff of Rates and Charges.  If the description is not found in the drop-down list, please enter the description in the green shaded cells under the correct class exactly as it appears on the tariff.   Please do not enter more than one \"Service Charge\" for each class for which a base monthly fixed charge applies.  All rate rider descriptions should begin with \"Rate Rider for...\"."]
["Select the appropriate rate classes as they appear on your most recent Board-Approved Tariff of Rates and Charges, including the MicroFit Class."]
[]
["How many classes are listed on your most recent Board-Approved Tariff of Rates and Charges?",null,8]
[]
["Identify Your Rate Classes in the Blue Cells below.  Rate class names can be selected from the pull-dwon menu.  Please ensure that a rate class is assigned to each shaded cell.\n"]
[]
[]
["List of Rate Classes"]
["RESIDENTIAL"]
["GENERAL SERVICE LESS THAN 50 KW"]
["GENERAL SERVICE 50 TO 4,999 KW"]
["LARGE USE"]
["UNMETERED SCATTERED LOAD"]
["STANDBY POWER"]
["STREET LIGHTING"]
["MicroFIT"]
[]
[]
[]
[]
[]
[]
[]
[]
["Once all blue shaded cells above are filled out, press the following button to create your tariff template"]
[]
[{"$f":"'[2]LDC Info'!E14","v":"Kingston Hydro Corporation"}]
["TARIFF OF RATES AND CHARGES"]
[{"$f":"\"Effective and Implementation Date January 1, 2019\"","v":"Effective and Implementation Date January 1, 2019"}]
[]
["This schedule supersedes and replaces all previously"]
["approved schedules of Rates, Charges and Loss Factors"]
[{"$f":"EBNUMBER","v":"EB-2015-0083"}]
[]
["RESIDENTIAL SERVICE CLASSIFICATION"]
[]
["This classification applies to an account taking electricity at 750 volts or less where the electricity is used exclusively in a separate metered living accommodation. Customers shall be residing in single-dwelling units that consist of a detached house or one unit of a semi-detached, duplex, triplex or quadruplex house, with a residential zoning. Separately metered dwellings within a town house complex or apartment building also qualify as residential customers. All customers are single-phase. Further servicing details are available in the distributor's Conditions of Service."]
["APPLICATION"]
[]
["The application of these rates and charges shall be in accordance with the Licence of the Distributor and any Code or Order of the Board, and amendments thereto as approved by the Board, which may be applicable to the administration of this schedule."]
["No rates and charges for the distribution of electricity and charges to meet the costs of any work or service done or furnished for the purpose of the distribution of electricity shall be made except as permitted by this schedule, unless required by the Distributor's Licence or a Code or Order of the Board, and amendments thereto as approved by the Board, or as specified herein."]
["Unless specifically noted, this schedule does not contain any charges for the electricity commodity, be it under the Regulated Price Plan, a contract with a retailer or the wholesale market price, as applicable. In addition, the charges in the MONTHLY RATES AND CHARGES - Regulatory Component of this schedule do not apply to a customer that is an embedded wholesale market participant."]
["It should be noted that this schedule does not list any changes, assessments or credits that are required by law to be invoiced by a distributor and that are not subject to Board approval, such as the Debt Retirement Charge, the Global Adjustment, the Ontario Clean Energy Benefit and the HST."]
[]
["MONTHLY RATES AND CHARGES - Delivery Component"]
[]
["Service Charge",null,"$",{"$f":"'Rates Summary'!$H$28","v":25.35}]
[]
[]
[]
["Distribution Volumetric Rate",null,"$/kWh",{"$f":"'Rates Summary'!$H$40","v":0}]
["Low Voltage Service Rate",null,"$/kWh",{"$f":"'Rates Summary'!$C$15","v":1.1999999999999999E-3}]
["Retail Transmission Rate - Network Service Rate",null,"$/kWh",{"$f":"'Rates Summary'!$C$17","v":7.1000000000000004E-3}]
["Retail Transmission Rate - Line and Transformation Connection Service Rate",null,"$/kWh",{"$f":"'Rates Summary'!$C$18","v":5.5999999999999999E-3}]
[]
[]
[]
[]
[]
[]
[]
[]
[]
[]
[]
[]
[]
[]
[]
[]
[]
[]
[]
[]
[]
[]
[]
["MONTHLY RATES AND CHARGES - Regulatory Component"]
[]
["Wholesale Market Service Rate",null,"$/kWh",{"$f":"'Rates Summary'!$C$19","v":4.4000000000000003E-3}]
["Rural Rate Protection Charge",null,"$/kWh",{"$f":"'Rates Summary'!$C$20","v":1.2999999999999999E-3}]
["Standard Supply Service - Administrative Charge (if applicable)",null,"$",{"$f":"'Rates Summary'!$C$21","v":0.25}]
["GENERAL SERVICE LESS THAN 50 KW SERVICE CLASSIFICATION"]
[]
["This classification refers to a non residential account taking electricity at 750 volts or less whose monthly average peak demand is less than, or is forecast to be less than, 50 kW. Further servicing details are available in the distributor's Conditions of Service."]
["APPLICATION"]
[]
["The application of these rates and charges shall be in accordance with the Licence of the Distributor and any Code or Order of the Board, and amendments thereto as approved by the Board, which may be applicable to the administration of this schedule."]
["Unless specifically noted, this schedule does not contain any charges for the electricity commodity, be it under the Regulated Price Plan, a contract with a retailer or the wholesale market price, as applicable. In addition, the charges in the MONTHLY RATES AND CHARGES - Regulatory Component of this schedule do not apply to a customer that is an embedded wholesale market participant."]
["Unless specifically noted, this schedule does not contain any charges for the electricity commodity, be it under the Regulated Price Plan, a contract with a retailer or the wholesale market price, as applicable. In addition, the charges in the MONTHLY RATES AND CHARGES - Regulatory Component of this schedule do not apply to a customer that is an embedded wholesale market participant."]
["It should be noted that this schedule does not list any changes, assessments or credits that are required by law to be invoiced by a distributor and that are not subject to Board approval, such as the Debt Retirement Charge, the Global Adjustment, the Ontario Clean Energy Benefit and the HST."]
[]
["MONTHLY RATES AND CHARGES - Delivery Component"]
[]
["Service Charge",null,"$",{"$f":"'Rates Summary'!$H$29","v":15.22}]
[]
[]
[]
["Distribution Volumetric Rate",null,"$/kWh",{"$f":"'Rates Summary'!$H$41","v":1.61E-2}]
["Low Voltage Service Rate",null,"$/kWh",{"$f":"'Rates Summary'!$D$15","v":1.1000000000000001E-3}]
["Retail Transmission Rate - Network Service Rate",null,"$/kWh",{"$f":"'Rates Summary'!$D$17","v":6.3E-3}]
["Retail Transmission Rate - Line and Transformation Connection Service Rate",null,"$/kWh",{"$f":"'Rates Summary'!$D$18","v":5.1000000000000004E-3}]
[]
[]
[]
[]
[]
[]
[]
[]
[]
[]
[]
[]
[]
[]
[]
[]
[]
[]
[]
[]
[]
[]
[]
["MONTHLY RATES AND CHARGES - Regulatory Component"]
[]
["Wholesale Market Service Rate",null,"$/kWh",{"$f":"'Rates Summary'!$D$19","v":4.4000000000000003E-3}]
["Rural Rate Protection Charge",null,"$/kWh",{"$f":"'Rates Summary'!$D$20","v":1.2999999999999999E-3}]
["Standard Supply Service - Administrative Charge (if applicable)",null,"$",{"$f":"'Rates Summary'!$D$21","v":0.25}]
["GENERAL SERVICE 50 TO 4,999 KW SERVICE CLASSIFICATION"]
[]
["This classification refers to a non residential account whose monthly average peak demand is equal to or greater than, or is forecast to be equal to or greater than, 50 kW but less than 5,000 kW. Further servicing details are available in th distributor's Conditions of Service."]
["APPLICATION"]
[]
["The application of these rates and charges shall be in accordance with the Licence of the Distributor and any Code or Order of the Board, and amendments thereto as approved by the Board, which may be applicable to the administration of this schedule."]
["No rates and charges for the distribution of electricity and charges to meet the costs of any work or service done or furnished for the purpose of the distribution of electricity shall be made except as permitted by this schedule, unless required by the Distributor's Licence or a Code or Order of the Board, and amendments thereto as approved by the Board, or as specified herein."]
["Unless specifically noted, this schedule does not contain any charges for the electricity commodity, be it under the Regulated Price Plan, a contract with a retailer or the wholesale market price, as applicable. In addition, the charges in the MONTHLY RATES AND CHARGES - Regulatory Component of this schedule do not apply to a customer that is an embedded wholesale market participant."]
["It should be noted that this schedule does not list any changes, assessments or credits that are required by law to be invoiced by a distributor and that are not subject to Board approval, such as the Debt Retirement Charge, the Global Adjustment, the Ontario Clean Energy Benefit and the HST."]
[]
["MONTHLY RATES AND CHARGES - Delivery Component"]
[]
["Service Charge",null,"$",{"$f":"'Rates Summary'!$H$30","v":110.99}]
["Distribution Volumetric Rate",null,"$/kW",{"$f":"'Rates Summary'!$H$42","v":3.3260999999999998}]
["Low Voltage Service Rate",null,"$/kW",{"$f":"'Rates Summary'!$E$15","v":0.46629999999999999}]
["Retail Transmission Rate - Network Service Rate",null,"$/kW",{"$f":"'Rates Summary'!$E$17","v":2.7797000000000001}]
["Retail Transmission Rate - Line and Transformation Connection Service Rate",null,"$/kW",{"$f":"'Rates Summary'!$E$18","v":2.2225000000000001}]
[]
[]
[]
[]
[]
[]
[]
[]
[]
[]
[]
[]
[]
[]
[]
[]
[]
[]
[]
[]
[]
[]
[]
[]
[]
[]
["MONTHLY RATES AND CHARGES - Regulatory Component"]
[]
["Wholesale Market Service Rate",null,"$/kWh",{"$f":"'Rates Summary'!$E$19","v":4.4000000000000003E-3}]
["Rural Rate Protection Charge",null,"$/kWh",{"$f":"'Rates Summary'!$E$20","v":1.2999999999999999E-3}]
["Standard Supply Service - Administrative Charge (if applicable)",null,"$",{"$f":"'Rates Summary'!$E$21","v":0.25}]
["LARGE USE SERVICE CLASSIFICATION"]
[]
["This classification refers to an account whose monthly average peak demand is equal to or greater than, or is forecast to be equal to or greater than, 5,000 kW. Further servicing details are available in the distributor's Conditions of Service."]
["APPLICATION"]
[]
["The application of these rates and charges shall be in accordance with the Licence of the Distributor and any Code or Order of the Board, and amendments thereto as approved by the Board, which may be applicable to the administration of this schedule."]
["No rates and charges for the distribution of electricity and charges to meet the costs of any work or service done or furnished for the purpose of the distribution of electricity shall be made except as permitted by this schedule, unless required by the Distributor's Licence or a Code or Order of the Board, and amendments thereto as approved by the Board, or as specified herein."]
["Unless specifically noted, this schedule does not contain any charges for the electricity commodity, be it under the Regulated Price Plan, a contract with a retailer or the wholesale market price, as applicable. In addition, the charges in the MONTHLY RATES AND CHARGES - Regulatory Component of this schedule do not apply to a customer that is an embedded wholesale market participant."]
["It should be noted that this schedule does not list any changes, assessments or credits that are required by law to be invoiced by a distributor and that are not subject to Board approval, such as the Debt Retirement Charge, the Global Adjustment, the Ontario Clean Energy Benefit and the HST."]
[]
["MONTHLY RATES AND CHARGES - Delivery Component"]
[]
["Service Charge",null,"$",{"$f":"'Rates Summary'!$H$31","v":5164}]
["Distribution Volumetric Rate",null,"$/kW",{"$f":"'Rates Summary'!$H$43","v":1.3339000000000001}]
["Low Voltage Service Rate",null,"$/kW",{"$f":"'Rates Summary'!$F$15","v":0.56189999999999996}]
["Retail Transmission Rate - Network Service Rate",null,"$/kW",{"$f":"'Rates Summary'!$F$17","v":3.3492000000000002}]
["Retail Transmission Rate - Line and Transformation Connection Service Rate",null,"$/kW",{"$f":"'Rates Summary'!$F$18","v":2.6779999999999999}]
[]
[]
[]
[]
[]
[]
[]
[]
[]
[]
[]
[]
[]
[]
[]
[]
[]
[]
[]
[]
[]
[]
[]
[]
[]
[]
["MONTHLY RATES AND CHARGES - Regulatory Component"]
[]
["Wholesale Market Service Rate",null,"$/kWh",{"$f":"'Rates Summary'!$F$19","v":4.4000000000000003E-3}]
["Rural Rate Protection Charge",null,"$/kWh",{"$f":"'Rates Summary'!$F$20","v":1.2999999999999999E-3}]
["Standard Supply Service - Administrative Charge (if applicable)",null,"$",{"$f":"'Rates Summary'!$F$21","v":0.25}]
["UNMETERED SCATTERED LOAD SERVICE CLASSIFICATION"]
[]
["This classification refers to an account taking electricity at 750 volts or less whose monthly average peak demand is less than, or is forecast to be less than, 50 kW and the consumption is unmetered. Such connections include cable TV power packs, bus shelters, telephone booths, traffic lights, railway crossings, etc. The customer will provide detailed manufacturer information/documentation with regard to electrical demand/consumption of the proposed unmetered load. Further servicing details are available in the distributor's Conditons of Service."]
["APPLICATION"]
[]
["The application of these rates and charges shall be in accordance with the Licence of the Distributor and any Code or Order of the Board, and amendments thereto as approved by the Board, which may be applicable to the administration of this schedule."]
["No rates and charges for the distribution of electricity and charges to meet the costs of any work or service done or furnished for the purpose of the distribution of electricity shall be made except as permitted by this schedule, unless required by the Distributor's Licence or a Code or Order of the Board, and amendments thereto as approved by the Board, or as specified herein."]
["Unless specifically noted, this schedule does not contain any charges for the electricity commodity, be it under the Regulated Price Plan, a contract with a retailer or the wholesale market price, as applicable. In addition, the charges in the MONTHLY RATES AND CHARGES - Regulatory Component of this schedule do not apply to a customer that is an embedded wholesale market participant."]
["It should be noted that this schedule does not list any changes, assessments or credits that are required by law to be invoiced by a distributor and that are not subject to Board approval, such as the Debt Retirement Charge, the Global Adjustment, the Ontario Clean Energy Benefit and the HST."]
[]
["MONTHLY RATES AND CHARGES - Delivery Component"]
[]
["Service Charge (per customer)",null,"$",{"$f":"'Rates Summary'!$H$32","v":6.31}]
["Distribution Volumetric Rate",null,"$/kWh",{"$f":"'Rates Summary'!$H$44","v":1.2500000000000001E-2}]
["Low Voltage Service Rate",null,"$/kWh",{"$f":"'Rates Summary'!$G$15","v":1.1999999999999999E-3}]
["Retail Transmission Rate - Network Service Rate",null,"$/kWh",{"$f":"'Rates Summary'!$G$17","v":7.1000000000000004E-3}]
["Retail Transmission Rate - Line and Transformation Connection Service Rate",null,"$/kWh",{"$f":"'Rates Summary'!$G$18","v":5.5999999999999999E-3}]
[]
[]
[]
[]
[]
[]
[]
[]
[]
[]
[]
[]
[]
[]
[]
[]
[]
[]
[]
[]
[]
[]
[]
[]
[]
[]
["MONTHLY RATES AND CHARGES - Regulatory Component"]
[]
["Wholesale Market Service Rate",null,"$/kWh",{"$f":"'Rates Summary'!$G$19","v":4.4000000000000003E-3}]
["Rural Rate Protection Charge",null,"$/kWh",{"$f":"'Rates Summary'!$H$20","v":1.2999999999999999E-3}]
["Standard Supply Service - Administrative Charge (if applicable)",null,"$",{"$f":"'Rates Summary'!$H$21","v":0.25}]
["STANDBY POWER on a FINAL BASIS SERVICE CLASSIFICATION"]
[]
["This classification refers to an account that has Load Displacement Generation and requires Kingston Hydro Corporation to provide back-up service. Further servicing details are available in the distributors's Conditions of Service."]
["APPLICATION"]
[]
["The application of these rates and charges shall be in accordance with the Licence of the Distributor and any Code or Order of the Board, and amendments thereto as approved by the Board, which may be applicable to the administration of this schedule."]
["No rates and charges for the distribution of electricity and charges to meet the costs of any work or service done or furnished for the purpose of the distribution of electricity shall be made except as permitted by this schedule, unless required by the Distributor's Licence or a Code or Order of the Board, and amendments thereto as approved by the Board, or as specified herein."]
["Unless specifically noted, this schedule does not contain any charges for the electricity commodity, be it under the Regulated Price Plan, a contract with a retailer or the wholesale market price, as applicable. In addition, the charges in the MONTHLY RATES AND CHARGES - Regulatory Component of this schedule do not apply to a customer that is an embedded wholesale market participant."]
["It should be noted that this schedule does not list any changes, assessments or credits that are required by law to be invoiced by a distributor and that are not subject to Board approval, such as the Debt Retirement Charge, the Global Adjustment, the Ontario Clean Energy Benefit and the HST."]
[]
["MONTHLY RATES AND CHARGES - Delivery Component"]
[]
["Standby Charges are to be applied to behind-the-meter generators that are not IESO market participants, FIT program participants, net-metered generators or retail generators, which have their own metering and settlement conventions as per regulation and legislation. \n\nStandby Charges are based on applicable applicable monthly General Service < 50kW,  General Service > 50kW to 4,999 kW or Large Use Distribution Volumetric Charges, depending on the rate classification of the generator host facility.\n\nIn the case where utility grade metering is not installed on the generator, Distribution Charges on the generator host facility’s load account will be determined by multiplying the peak hourly delivered load as measured by the load account meter in kW by applicable variable charges for the rate class. Standby Charges are determined by multiplying the nameplate capacity of the behind the meter generator in KW by applicable Standby Power charges in each month. \n\nThis type of scenario is preferable for our customers if the generator is a “baseload” or “24-7-365” generator such as a fuel cell CHP unit or pressure-drop turbine unit. It may also be preferable to the customer where the cost of utility grade metering is high or the size of the generator is very small relative to the demand of the host load customer. \n\nIn the case where utility grade metering is installed on the generator, Distribution Charges on the generator host facility’s load account will be determined by multiplying the peak hourly delivered load as measured by the load account meter in kW by applicable variable charges for the rate class. Standby Charges will be determined by multiplying the peak coincident combined kW delivered by both the distribution system and the generator, less the peak hourly delivered load in kW of the host customer facility as measured by the generator host load account meter.\n\nThis type of scenario is preferable for customers who wish to use generators or electricity storage facilities to participate in provincial conservation initiatives such as the IESO’s Demand Response or Industrial Conservation Initiatives, or reduce kWh consumption to contribute towards Kingston Hydro’s 2020 Conservation Targets, but are not able to operate their generators “24-7-365”.\n"]
[]
[]
[]
[]
[]
[]
[]
[]
[]
[]
[]
[]
[]
[]
[]
[]
[]
[]
[]
[]
[]
[]
[]
[]
[]
[]
[]
[]
[]
[]
["MONTHLY RATES AND CHARGES - Regulatory Component"]
[]
[]
[]
[]
["STREET LIGHTING SERVICE CLASSIFICATION"]
[]
["This classification refers to an account for roadway lighting with a Municipality, Regional Municipality, Ministry of Transportation and private roadway lighting operation, controlled by photo cells. The consumption for these customers will be based on the calculated connected load times the required lighting times established in the approved OEB street lighting load shape template. Further servicing details are available in the distributor's Conditions of Service."]
["APPLICATION"]
[]
["The application of these rates and charges shall be in accordance with the Licence of the Distributor and any Code or Order of the Board, and amendments thereto as approved by the Board, which may be applicable to the administration of this schedule."]
["No rates and charges for the distribution of electricity and charges to meet the costs of any work or service done or furnished for the purpose of the distribution of electricity shall be made except as permitted by this schedule, unless required by the Distributor's Licence or a Code or Order of the Board, and amendments thereto as approved by the Board, or as specified herein."]
["Unless specifically noted, this schedule does not contain any charges for the electricity commodity, be it under the Regulated Price Plan, a contract with a retailer or the wholesale market price, as applicable. In addition, the charges in the MONTHLY RATES AND CHARGES - Regulatory Component of this schedule do not apply to a customer that is an embedded wholesale market participant."]
["It should be noted that this schedule does not list any changes, assessments or credits that are required by law to be invoiced by a distributor and that are not subject to Board approval, such as the Debt Retirement Charge, the Global Adjustment, the Ontario Clean Energy Benefit and the HST."]
[]
["MONTHLY RATES AND CHARGES - Delivery Component"]
[]
["Service Charge (per light)",null,"$",{"$f":"'Rates Summary'!$H$33","v":1.28}]
["Distribution Volumetric Rate",null,"$/kW",{"$f":"'Rates Summary'!$H$45","v":14.518800000000001}]
["Low Voltage Service Rate",null,"$/kW",{"$f":"'Rates Summary'!$H$15","v":0.33679999999999999}]
["Retail Transmission Rate - Network Service Rate",null,"$/kW",{"$f":"'Rates Summary'!$H$17","v":2.0078}]
["Retail Transmission Rate - Line and Transformation Connection Service Rate",null,"$/kW",{"$f":"'Rates Summary'!$H$18","v":1.6052999999999999}]
[]
[]
[]
[]
[]
[]
[]
[]
[]
[]
[]
[]
[]
[]
[]
[]
[]
[]
[]
[]
[]
[]
[]
[]
[]
[]
["MONTHLY RATES AND CHARGES - Regulatory Component"]
[]
["Wholesale Market Service Rate",null,"$/kWh",{"$f":"'Rates Summary'!$H$19","v":4.4000000000000003E-3}]
["Rural Rate Protection Charge",null,"$/kWh",{"$f":"'Rates Summary'!$H$20","v":1.2999999999999999E-3}]
["Standard Supply Service - Administrative Charge (if applicable)",null,"$",{"$f":"'Rates Summary'!$H$21","v":0.25}]
["MicroFIT SERVICE CLASSIFICATION"]
[]
["This classification applies to an electricity generation facility contracted under the Ontario Power Authority's microFIT program and connected to the distributor's distribution system. Further servicing details are available in the distributor's Conditions of Service."]
["APPLICATION"]
[]
["The application of these rates and charges shall be in accordance with the Licence of the Distributor and any Code or Order of the Board, and amendments thereto as approved by the Board, which may be applicable to the administration of this schedule."]
["No rates and charges for the distribution of electricity and charges to meet the costs of any work or service done or furnished for the purpose of the distribution of electricity shall be made except as permitted by this schedule, unless required by the Distributor's Licence or a Code or Order of the Board, and amendments thereto as approved by the Board, or as specified herein."]
["Unless specifically noted, this schedule does not contain any charges for the electricity commodity, be it under the Regulated Price Plan, a contract with a retailer or the wholesale market price, as applicable. In addition, the charges in the MONTHLY RATES AND CHARGES - Regulatory Component of this schedule do not apply to a customer that is an embedded wholesale market participant."]
["It should be noted that this schedule does not list any changes, assessments or credits that are required by law to be invoiced by a distributor and that are not subject to Board approval, such as the Debt Retirement Charge, the Global Adjustment, the Ontario Clean Energy Benefit and the HST."]
[]
["MONTHLY RATES AND CHARGES - Delivery Component"]
[]
["Service Charge",null,"$",5.4]
[]
[]
[]
[]
[]
[]
[]
[]
[]
[]
[]
[]
[]
[]
[]
[]
[]
[]
[]
[]
[]
[]
[]
[]
[]
[]
[]
[]
[]
[]
["MONTHLY RATES AND CHARGES - Regulatory Component"]
[]
["Wholesale Market Service Rate",null,"$/kWh",4.4000000000000003E-3]
["Rural Rate Protection Charge",null,"$/kWh",1.2999999999999999E-3]
["Standard Supply Service - Administrative Charge (if applicable)",null,"$",0.25]
[]
["ALLOWANCES"]
[]
["Transformer Allowance for Ownership - per kW of billing demand/month",null,"$/kW",-0.6]
[]
[]
["Primary Metering Allowance for transformer losses – applied to measured demand and energy",null,"%",-1]
[]
["SPECIFIC SERVICE CHARGES"]
[]
["APPLICATION"]
[]
["The application of these rates and charges shall be in accordance with the Licence of the Distributor and any Code or Order of the Board, and amendments thereto as approved by the Board, which may be applicable to the administration of this schedule."]
[]
["No charges to meet the costs of any work or service done or furnished for the purpose of the distribution of electricity shall be made except as permitted by this schedule, unless required by the Distributor’s Licence or a Code or Order of the Board, and amendments thereto as approved by the Board, or as specified herein."]
[]
["It should be noted that this schedule does not list any charges, assessments or credits that are required by law to be invoiced by a distributor and that are not subject to Board approval, such as the Debt Retirement Charge, the Global Adjustment, the Ontario Clean Energy Benefit and the HST."]
[]
["Customer Administration"]
[]
["Arrears certificate",null,"$",15]
["Statement of Account",null,"$",15]
["Request for other billing information",null,"$",15]
["Account History",null,"$",15]
["Returned cheque (plus bank charges)",null,"$",15]
["Legal letter",null,"$",15]
["Account set up charge/change of occupancy charge (plus credit agency costs if applicable)",null,"$",15]
["Special meter reads",null,"$",30]
["Meter dispute charge plus Measurement Canada fees (if meter found correct)",null,"$",30]
[]
[]
[]
[]
[]
[]
[]
[]
[]
[]
[]
[]
[]
[]
[]
[]
[]
[]
[]
[]
[]
[]
[]
[]
[]
[]
[]
["Non-Payment of Account"]
[]
["Late Payment – per month",null,"%",1.5]
["Late Payment – per annum",null,"%",19.559999999999999]
["Disconnect/Reconnect at meter – during regular hours",null,"$",65]
["Disconnect/Reconnect at meter – after regular hours",null,"$",185]
["Disconnect/Reconnect at pole – during regular hours",null,"$",185]
["Disconnect/Reconnect at pole – after regular hours",null,"$",415]
["Install/Remove load control device – during regular hours",null,"$",65]
["Install/Remove load control device – after regular hours",null,"$",185]
[]
[]
[]
[]
[]
[]
[]
[]
[]
[]
[]
[]
[]
[]
[]
[]
[]
["Other"]
[]
["Specific Charge for Access to the Power Poles - $/pole/year",null,"$",22.35]
["Layout fees",null,"$",200]
[]
[]
[]
[]
[]
[]
[]
[]
[]
[]
[]
[]
[]
[]
[]
[]
[]
[]
[]
[]
["RETAIL SERVICE CHARGES (if applicable)"]
[]
["The application of these rates and charges shall be in accordance with the Licence of the Distributor and any Code or Order of the Board, and amendments thereto as approved by the Board, which may be applicable to the administration of this schedule."]
[]
["No rates and charges for the distribution of electricity and charges to meet the costs of any work or service done or furnished for the purpose of the distribution of electricity shall be made except as permitted by this schedule, unless required by the Distributor’s Licence or a Code or Order of the Board, and amendments thereto as approved by the Board, or as specified herein."]
[]
["Unless specifically noted, this schedule does not contain any charges for the electricity commodity, be it under the Regulated Price Plan, a contract with a retailer or the wholesale market price, as applicable."]
[]
["It should be noted that this schedule does not list any charges, assessments or credits that are required by law to be invoiced by a distributor and that are not subject to Board approval, such as the Debt Retirement Charge, the Global Adjustment, the Ontario Clean Energy Benefit and the HST."]
[]
["Retail Service Charges refer to services provided by a distributor to retailers or customers related to the supply of competitive electricity."]
[]
["One-time charge, per retailer, to establish the service agreement between the distributor and the retailer",null,"$",100]
["Monthly Fixed Charge, per retailer",null,"$",20]
["Monthly Variable Charge, per customer, per retailer",null,"$/cust.",0.5]
["Distributor-consolidated billing monthly charge, per customer, per retailer",null,"$/cust.",0.3]
["Retailer-consolidated billing monthly credit, per customer, per retailer",null,"$/cust.",-0.3]
["Service Transaction Requests (STR) "]
["Request fee, per request, applied to the requesting party",null,"$",0.25]
["Processing fee, per request, applied to the requesting party",null,"$",0.5]
["Request for customer information as outlined in Section 10.6.3 and Chapter 11 of the Retail"]
["Settlement Code directly to retailers and customers, if not delivered electronically through the"]
["Electronic Business Transaction (EBT) system, applied to the requesting party "]
["Up to twice a year",null,"$","no charge"]
["More than twice a year, per request (plus incremental delivery costs)",null,"$",2]
[]
["LOSS FACTORS"]
[]
["If the distributor is not capable of prorating changed loss factors jointly with distribution rates, the revised loss factors will be implemented upon the first subsequent billing for each billing cycle."]
[]
[]
["Distribution Loss Factor - Secondary Metered Customer < 5,000 kW",null,null,1.0392999999999999]
["Distribution Loss Factor - Secondary Metered Customer > 5,000 kW",null,null,1.0187999999999999]
["Distribution Loss Factor - Primary Metered Customer < 5,000 kW",null,null,1.0288999999999999]
["Distribution Loss Factor - Primary Metered Customer > 5,000 kW",null,null,1.0085999999999999]

{"sheet":"App. 2-Z_2020 Tariff","index":30,"n_rows":570,"n_cols":4,"rows_kept":570,"cut":false,"hidden":false,"merged":[[566,0,566,1],[567,0,567,1],[568,0,568,1],[569,0,569,1],[570,0,570,1],[571,0,571,1],[556,0,556,1],[557,0,557,1],[558,0,558,1],[559,0,559,1],[563,0,563,3],[563,4,563,7],[550,0,550,1],[551,0,551,1],[552,0,552,1],[553,0,553,1],[554,0,554,1],[555,0,555,1],[545,0,545,3],[545,4,545,7],[547,0,547,1],[547,4,547,5],[548,0,548,1],[549,0,549,1],[542,0,542,3],[542,4,542,7],[543,0,543,3],[543,4,543,7],[544,0,544,3],[544,4,544,7],[539,0,539,3],[539,4,539,7],[540,0,540,3],[540,4,540,7],[541,0,541,3],[541,4,541,7],[532,0,532,1],[533,0,533,1],[537,0,537,3],[537,4,537,7],[538,0,538,3],[538,4,538,7],[526,0,526,1],[527,0,527,1],[528,0,528,1],[529,0,529,1],[530,0,530,1],[531,0,531,1],[520,0,520,1],[521,0,521,1],[522,0,522,1],[523,0,523,1],[524,0,524,1],[525,0,525,1],[514,0,514,1],[515,0,515,1],[516,0,516,1],[517,0,517,1],[518,0,518,1],[519,0,519,1],[506,0,506,1],[507,0,507,1],[508,0,508,1],[509,0,509,1],[510,0,510,1],[513,0,513,1],[500,0,500,1],[501,0,501,1],[502,0,502,1],[503,0,503,1],[504,0,504,1],[505,0,505,1],[494,0,494,1],[495,0,495,1],[496,0,496,1],[497,0,497,1],[498,0,498,1],[499,0,499,1],[488,0,488,1],[489,0,489,1],[490,0,490,1],[491,0,491,1],[492,0,492,1],[493,0,493,1],[479,0,479,1],[480,0,480,1],[481,0,481,1],[482,0,482,1],[486,0,486,1],[487,0,487,1],[473,0,473,1],[474,0,474,1],[475,0,475,1],[476,0,476,1],[477,0,477,1],[478,0,478,1],[467,0,467,1],[468,0,468,1],[469,0,469,1],[470,0,470,1],[471,0,471,1],[472,0,472,1],[461,0,461,1],[462,0,462,1],[463,0,463,1],[464,0,464,1],[465,0,465,1],[466,0,466,1],[455,0,455,1],[456,0,456,1],[457,0,457,1],[458,0,458,1],[459,0,459,1],[460,0,460,1],[449,0,449,1],[450,0,450,1],[451,0,451,1],[452,0,452,1],[453,0,453,1],[454,0,454,1],[440,0,440,3],[442,0,442,3],[442,4,442,7],[444,0,444,3],[444,4,444,7],[448,0,448,1],[426,0,426,1],[427,0,427,1],[431,0,431,1],[432,0,432,1],[433,0,433,1],[434,0,434,1],[417,0,417,1],[418,0,418,1],[419,0,419,1],[420,0,420,1],[421,0,421,1],[425,0,425,1],[411,0,411,1],[412,0,412,1],[413,0,413,1],[414,0,414,1],[415,0,415,1],[416,0,416,1],[405,0,405,1],[406,0,406,1],[407,0,407,1],[408,0,408,1],[409,0,409,1],[410,0,410,1],[399,0,399,1],[400,0,400,1],[401,0,401,1],[402,0,402,1],[403,0,403,1],[404,0,404,1],[393,0,393,1],[394,0,394,1],[395,0,395,1],[396,0,396,1],[397,0,397,1],[398,0,398,1],[382,0,382,3],[385,0,385,3],[386,0,386,3],[387,0,387,3],[388,0,388,3],[392,0,392,1],[372,0,372,1],[373,0,373,1],[377,0,377,1],[378,0,378,1],[379,0,379,1],[380,0,380,3],[366,0,366,1],[367,0,367,1],[368,0,368,1],[369,0,369,1],[370,0,370,1],[371,0,371,1],[360,0,360,1],[361,0,361,1],[362,0,362,1],[363,0,363,1],[364,0,364,1],[365,0,365,1],[354,0,354,1],[355,0,355,1],[356,0,356,1],[357,0,357,1],[358,0,358,1],[359,0,359,1],[348,0,348,1],[349,0,349,1],[350,0,350,1],[351,0,351,1],[352,0,352,1],[353,0,353,1],[339,0,339,3],[340,0,340,3],[344,0,344,1],[345,0,345,1],[346,0,346,1],[347,0,347,1],[330,0,330,1],[331,0,331,1],[332,0,332,3],[334,0,334,3],[337,0,337,3],[338,0,338,3],[321,0,321,1],[322,0,322,1],[323,0,323,1],[324,0,324,1],[325,0,325,1],[329,0,329,1],[315,0,315,1],[316,0,316,1],[317,0,317,1],[318,0,318,1],[319,0,319,1],[320,0,320,1],[309,0,309,1],[310,0,310,1],[311,0,311,1],[312,0,312,1],[313,0,313,1],[314,0,314,1],[303,0,303,1],[304,0,304,1],[305,0,305,1],[306,0,306,1],[307,0,307,1],[308,0,308,1],[297,0,297,1],[298,0,298,1],[299,0,299,1],[300,0,300,1],[301,0,301,1],[302,0,302,1],[286,0,286,3],[289,0,289,3],[290,0,290,3],[291,0,291,3],[292,0,292,3],[296,0,296,1],[276,0,276,1],[277,0,277,1],[281,0,281,1],[282,0,282,1],[283,0,283,1],[284,0,284,3],[270,0,270,1],[271,0,271,1],[272,0,272,1],[273,0,273,1],[274,0,274,1],[275,0,275,1],[264,0,264,1],[265,0,265,1],[266,0,266,1],[267,0,267,1],[268,0,268,1],[269,0,269,1],[258,0,258,1],[259,0,259,1],[260,0,260,1],[261,0,261,1],[262,0,262,1],[263,0,263,1],[252,0,252,1],[253,0,253,1],[254,0,254,1],[255,0,255,1],[256,0,256,1],[257,0,257,1],[243,0,243,3],[244,0,244,3],[248,0,248,1],[249,0,249,1],[250,0,250,1],[251,0,251,1],[234,0,234,1],[235,0,235,1],[236,0,236,3],[238,0,238,3],[241,0,241,3],[242,0,242,3],[225,0,225,1],[226,0,226,1],[227,0,227,1],[228,0,228,1],[229,0,229,1],[233,0,233,1],[219,0,219,1],[220,0,220,1],[221,0,221,1],[222,0,222,1],[223,0,223,1],[224,0,224,1],[213,0,213,1],[214,0,214,1],[215,0,215,1],[216,0,216,1],[217,0,217,1],[218,0,218,1],[207,0,207,1],[208,0,208,1],[209,0,209,1],[210,0,210,1],[211,0,211,1],[212,0,212,1],[201,0,201,1],[202,0,202,1],[203,0,203,1],[204,0,204,1],[205,0,205,1],[206,0,206,1],[190,0,190,3],[193,0,193,3],[194,0,194,3],[195,0,195,3],[196,0,196,3],[200,0,200,1],[180,0,180,1],[181,0,181,1],[185,0,185,1],[186,0,186,1],[187,0,187,1],[188,0,188,3],[174,0,174,1],[175,0,175,1],[176,0,176,1],[177,0,177,1],[178,0,178,1],[179,0,179,1],[168,0,168,1],[169,0,169,1],[170,0,170,1],[171,0,171,1],[172,0,172,1],[173,0,173,1],[162,0,162,1],[163,0,163,1],[164,0,164,1],[165,0,165,1],[166,0,166,1],[167,0,167,1],[156,0,156,1],[157,0,157,1],[158,0,158,1],[159,0,159,1],[160,0,160,1],[161,0,161,1],[147,0,147,3],[148,0,148,3],[152,0,152,1],[153,0,153,1],[154,0,154,1],[155,0,155,1],[138,0,138,1],[139,0,139,1],[140,0,140,3],[142,0,142,3],[145,0,145,3],[146,0,146,3],[129,0,129,1],[130,0,130,1],[131,0,131,1],[132,0,132,1],[133,0,133,1],[137,0,137,1],[123,0,123,1],[124,0,124,1],[125,0,125,1],[126,0,126,1],[127,0,127,1],[128,0,128,1],[117,0,117,1],[118,0,118,1],[119,0,119,1],[120,0,120,1],[121,0,121,1],[122,0,122,1],[111,0,111,1],[112,0,112,1],[113,0,113,1],[114,0,114,1],[115,0,115,1],[116,0,116,1],[105,0,105,1],[106,0,106,1],[107,0,107,1],[108,0,108,1],[109,0,109,1],[110,0,110,1],[94,0,94,3],[97,0,97,3],[98,0,98,3],[99,0,99,3],[100,0,100,3],[104,0,104,1],[84,0,84,1],[85,0,85,1],[89,0,89,1],[90,0,90,1],[91,0,91,1],[92,0,92,3],[78,0,78,1],[79,0,79,1],[80,0,80,1],[81,0,81,1],[82,0,82,1],[83,0,83,1],[72,0,72,1],[73,0,73,1],[74,0,74,1],[75,0,75,1],[76,0,76,1],[77,0,77,1],[66,0,66,1],[67,0,67,1],[68,0,68,1],[69,0,69,1],[70,0,70,1],[71,0,71,1],[60,0,60,1],[61,0,61,1],[62,0,62,1],[63,0,63,1],[64,0,64,1],[65,0,65,1],[51,0,51,3],[52,0,52,3],[56,0,56,1],[57,0,57,1],[58,0,58,1],[59,0,59,1],[41,0,41,3],[42,0,42,3],[44,0,44,3],[46,0,46,3],[49,0,49,3],[50,0,50,3],[24,0,24,3],[25,0,25,3],[36,0,36,3],[37,0,37,3],[38,0,38,3],[40,0,40,3],[18,0,18,3],[19,0,19,3],[20,0,20,3],[21,0,21,3],[22,0,22,3],[23,0,23,3],[7,0,7,3],[9,0,9,3],[10,0,10,3],[12,0,12,1],[14,0,14,3],[17,0,17,3],[0,2,0,3],[1,2,1,3],[2,2,2,3],[3,2,3,3],[4,2,4,3],[6,2,6,3]]}
[null,"File Number:",{"$f":"EBNUMBER","v":"EB-2015-0083"}]
[null,"Exhibit:"]
[null,"Tab:"]
[null,"Schedule:"]
[null,"Page:"]
[]
[null,"Date:"]
["Appendix 2-Z\nProposed Tariff of Rates and Charges"]
[]
["For each class, Applicants are required to copy and paste the class descriptions (located directly under the class name) and the description of the applicability of those rates (description is found under the class name and directly under the word \"APPLICATION\").  By using the drop-down lists located under the column labeled \"Rate Description\", please select the descriptions of the rates and charges that BEST MATCHES the descriptions on your most recent Board-Approved Tariff of Rates and Charges.  If the description is not found in the drop-down list, please enter the description in the green shaded cells under the correct class exactly as it appears on the tariff.   Please do not enter more than one \"Service Charge\" for each class for which a base monthly fixed charge applies.  All rate rider descriptions should begin with \"Rate Rider for...\"."]
["Select the appropriate rate classes as they appear on your most recent Board-Approved Tariff of Rates and Charges, including the MicroFit Class."]
[]
["How many classes are listed on your most recent Board-Approved Tariff of Rates and Charges?",null,8]
[]
["Identify Your Rate Classes in the Blue Cells below.  Rate class names can be selected from the pull-dwon menu.  Please ensure that a rate class is assigned to each shaded cell.\n"]
[]
[]
["List of Rate Classes"]
["RESIDENTIAL"]
["GENERAL SERVICE LESS THAN 50 KW"]
["GENERAL SERVICE 50 TO 4,999 KW"]
["LARGE USE"]
["UNMETERED SCATTERED LOAD"]
["STANDBY POWER"]
["STREET LIGHTING"]
["MicroFIT"]
[]
[]
[]
[]
[]
[]
[]
[]
["Once all blue shaded cells above are filled out, press the following button to create your tariff template"]
[]
[{"$f":"'[2]LDC Info'!E14","v":"Kingston Hydro Corporation"}]
["TARIFF OF RATES AND CHARGES"]
[{"$f":"\"Effective and Implementation Date January 1, 2020\"","v":"Effective and Implementation Date January 1, 2020"}]
[]
["This schedule supersedes and replaces all previously"]
["approved schedules of Rates, Charges and Loss Factors"]
[{"$f":"EBNUMBER","v":"EB-2015-0083"}]
[]
["RESIDENTIAL SERVICE CLASSIFICATION"]
[]
["This classification applies to an account taking electricity at 750 volts or less where the electricity is used exclusively in a separate metered living accommodation. Customers shall be residing in single-dwelling units that consist of a detached house or one unit of a semi-detached, duplex, triplex or quadruplex house, with a residential zoning. Separately metered dwellings within a town house complex or apartment building also qualify as residential customers. All customers are single-phase. Further servicing details are available in the distributor's Conditions of Service."]
["APPLICATION"]
[]
["The application of these rates and charges shall be in accordance with the Licence of the Distributor and any Code or Order of the Board, and amendments thereto as approved by the Board, which may be applicable to the administration of this schedule."]
["No rates and charges for the distribution of electricity and charges to meet the costs of any work or service done or furnished for the purpose of the distribution of electricity shall be made except as permitted by this schedule, unless required by the Distributor's Licence or a Code or Order of the Board, and amendments thereto as approved by the Board, or as specified herein."]
["Unless specifically noted, this schedule does not contain any charges for the electricity commodity, be it under the Regulated Price Plan, a contract with a retailer or the wholesale market price, as applicable. In addition, the charges in the MONTHLY RATES AND CHARGES - Regulatory Component of this schedule do not apply to a customer that is an embedded wholesale market participant."]
["It should be noted that this schedule does not list any changes, assessments or credits that are required by law to be invoiced by a distributor and that are not subject to Board approval, such as the Debt Retirement Charge, the Global Adjustment, the Ontario Clean Energy Benefit and the HST."]
[]
["MONTHLY RATES AND CHARGES - Delivery Component"]
[]
["Service Charge",null,"$",{"$f":"'Rates Summary'!$I$28","v":25.96}]
[null,null,null,{"$f":"'Rates Summary'!$C$16","v":0.78800000000000003}]
[]
[]
["Distribution Volumetric Rate",null,"$/kWh",{"$f":"'Rates Summary'!$I$40","v":0}]
["Low Voltage Service Rate",null,"$/kWh",{"$f":"'Rates Summary'!$C$15","v":1.1999999999999999E-3}]
["Retail Transmission Rate - Network Service Rate",null,"$/kWh",{"$f":"'Rates Summary'!$C$17","v":7.1000000000000004E-3}]
["Retail Transmission Rate - Line and Transformation Connection Service Rate",null,"$/kWh",{"$f":"'Rates Summary'!$C$18","v":5.5999999999999999E-3}]
[]
[]
[]
[]
[]
[]
[]
[]
[]
[]
[]
[]
[]
[]
[]
[]
[]
[]
[]
[]
[]
[]
[]
["MONTHLY RATES AND CHARGES - Regulatory Component"]
[]
["Wholesale Market Service Rate",null,"$/kWh",{"$f":"'Rates Summary'!$C$19","v":4.4000000000000003E-3}]
["Rural Rate Protection Charge",null,"$/kWh",{"$f":"'Rates Summary'!$C$20","v":1.2999999999999999E-3}]
["Standard Supply Service - Administrative Charge (if applicable)",null,"$",{"$f":"'Rates Summary'!$C$21","v":0.25}]
["GENERAL SERVICE LESS THAN 50 KW SERVICE CLASSIFICATION"]
[]
["This classification refers to a non residential account taking electricity at 750 volts or less whose monthly average peak demand is less than, or is forecast to be less than, 50 kW. Further servicing details are available in the distributor's Conditions of Service."]
["APPLICATION"]
[]
["The application of these rates and charges shall be in accordance with the Licence of the Distributor and any Code or Order of the Board, and amendments thereto as approved by the Board, which may be applicable to the administration of this schedule."]
["Unless specifically noted, this schedule does not contain any charges for the electricity commodity, be it under the Regulated Price Plan, a contract with a retailer or the wholesale market price, as applicable. In addition, the charges in the MONTHLY RATES AND CHARGES - Regulatory Component of this schedule do not apply to a customer that is an embedded wholesale market participant."]
["Unless specifically noted, this schedule does not contain any charges for the electricity commodity, be it under the Regulated Price Plan, a contract with a retailer or the wholesale market price, as applicable. In addition, the charges in the MONTHLY RATES AND CHARGES - Regulatory Component of this schedule do not apply to a customer that is an embedded wholesale market participant."]
["It should be noted that this schedule does not list any changes, assessments or credits that are required by law to be invoiced by a distributor and that are not subject to Board approval, such as the Debt Retirement Charge, the Global Adjustment, the Ontario Clean Energy Benefit and the HST."]
[]
["MONTHLY RATES AND CHARGES - Delivery Component"]
[]
["Service Charge",null,"$",{"$f":"'Rates Summary'!$I$29","v":15.4}]
[]
[]
[]
["Distribution Volumetric Rate",null,"$/kWh",{"$f":"'Rates Summary'!$I$41","v":1.66E-2}]
["Low Voltage Service Rate",null,"$/kWh",{"$f":"'Rates Summary'!$D$15","v":1.1000000000000001E-3}]
["Retail Transmission Rate - Network Service Rate",null,"$/kWh",{"$f":"'Rates Summary'!$D$17","v":6.3E-3}]
["Retail Transmission Rate - Line and Transformation Connection Service Rate",null,"$/kWh",{"$f":"'Rates Summary'!$D$18","v":5.1000000000000004E-3}]
[]
[]
[]
[]
[]
[]
[]
[]
[]
[]
[]
[]
[]
[]
[]
[]
[]
[]
[]
[]
[]
[]
[]
["MONTHLY RATES AND CHARGES - Regulatory Component"]
[]
["Wholesale Market Service Rate",null,"$/kWh",{"$f":"'Rates Summary'!$D$19","v":4.4000000000000003E-3}]
["Rural Rate Protection Charge",null,"$/kWh",{"$f":"'Rates Summary'!$D$20","v":1.2999999999999999E-3}]
["Standard Supply Service - Administrative Charge (if applicable)",null,"$",{"$f":"'Rates Summary'!$D$21","v":0.25}]
["GENERAL SERVICE 50 TO 4,999 KW SERVICE CLASSIFICATION"]
[]
["This classification refers to a non residential account whose monthly average peak demand is equal to or greater than, or is forecast to be equal to or greater than, 50 kW but less than 5,000 kW. Further servicing details are available in th distributor's Conditions of Service."]
["APPLICATION"]
[]
["The application of these rates and charges shall be in accordance with the Licence of the Distributor and any Code or Order of the Board, and amendments thereto as approved by the Board, which may be applicable to the administration of this schedule."]
["No rates and charges for the distribution of electricity and charges to meet the costs of any work or service done or furnished for the purpose of the distribution of electricity shall be made except as permitted by this schedule, unless required by the Distributor's Licence or a Code or Order of the Board, and amendments thereto as approved by the Board, or as specified herein."]
["Unless specifically noted, this schedule does not contain any charges for the electricity commodity, be it under the Regulated Price Plan, a contract with a retailer or the wholesale market price, as applicable. In addition, the charges in the MONTHLY RATES AND CHARGES - Regulatory Component of this schedule do not apply to a customer that is an embedded wholesale market participant."]
["It should be noted that this schedule does not list any changes, assessments or credits that are required by law to be invoiced by a distributor and that are not subject to Board approval, such as the Debt Retirement Charge, the Global Adjustment, the Ontario Clean Energy Benefit and the HST."]
[]
["MONTHLY RATES AND CHARGES - Delivery Component"]
[]
["Service Charge",null,"$",{"$f":"'Rates Summary'!$I$30","v":112.13}]
["Distribution Volumetric Rate",null,"$/kW",{"$f":"'Rates Summary'!$I$42","v":3.4096000000000002}]
["Low Voltage Service Rate",null,"$/kW",{"$f":"'Rates Summary'!$E$15","v":0.46629999999999999}]
["Retail Transmission Rate - Network Service Rate",null,"$/kW",{"$f":"'Rates Summary'!$E$17","v":2.7797000000000001}]
["Retail Transmission Rate - Line and Transformation Connection Service Rate",null,"$/kW",{"$f":"'Rates Summary'!$E$18","v":2.2225000000000001}]
[]
[]
[]
[]
[]
[]
[]
[]
[]
[]
[]
[]
[]
[]
[]
[]
[]
[]
[]
[]
[]
[]
[]
[]
[]
[]
["MONTHLY RATES AND CHARGES - Regulatory Component"]
[]
["Wholesale Market Service Rate",null,"$/kWh",{"$f":"'Rates Summary'!$E$19","v":4.4000000000000003E-3}]
["Rural Rate Protection Charge",null,"$/kWh",{"$f":"'Rates Summary'!$E$20","v":1.2999999999999999E-3}]
["Standard Supply Service - Administrative Charge (if applicable)",null,"$",{"$f":"'Rates Summary'!$E$21","v":0.25}]
["LARGE USE SERVICE CLASSIFICATION"]
[]
["This classification refers to an account whose monthly average peak demand is equal to or greater than, or is forecast to be equal to or greater than, 5,000 kW. Further servicing details are available in the distributor's Conditions of Service."]
["APPLICATION"]
[]
["The application of these rates and charges shall be in accordance with the Licence of the Distributor and any Code or Order of the Board, and amendments thereto as approved by the Board, which may be applicable to the administration of this schedule."]
["No rates and charges for the distribution of electricity and charges to meet the costs of any work or service done or furnished for the purpose of the distribution of electricity shall be made except as permitted by this schedule, unless required by the Distributor's Licence or a Code or Order of the Board, and amendments thereto as approved by the Board, or as specified herein."]
["Unless specifically noted, this schedule does not contain any charges for the electricity commodity, be it under the Regulated Price Plan, a contract with a retailer or the wholesale market price, as applicable. In addition, the charges in the MONTHLY RATES AND CHARGES - Regulatory Component of this schedule do not apply to a customer that is an embedded wholesale market participant."]
["It should be noted that this schedule does not list any changes, assessments or credits that are required by law to be invoiced by a distributor and that are not subject to Board approval, such as the Debt Retirement Charge, the Global Adjustment, the Ontario Clean Energy Benefit and the HST."]
[]
["MONTHLY RATES AND CHARGES - Delivery Component"]
[]
["Service Charge",null,"$",{"$f":"'Rates Summary'!$I$31","v":5164}]
["Distribution Volumetric Rate",null,"$/kW",{"$f":"'Rates Summary'!$I$43","v":1.377}]
["Low Voltage Service Rate",null,"$/kW",{"$f":"'Rates Summary'!$F$15","v":0.56189999999999996}]
["Retail Transmission Rate - Network Service Rate",null,"$/kW",{"$f":"'Rates Summary'!$F$17","v":3.3492000000000002}]
["Retail Transmission Rate - Line and Transformation Connection Service Rate",null,"$/kW",{"$f":"'Rates Summary'!$F$18","v":2.6779999999999999}]
[]
[]
[]
[]
[]
[]
[]
[]
[]
[]
[]
[]
[]
[]
[]
[]
[]
[]
[]
[]
[]
[]
[]
[]
[]
[]
["MONTHLY RATES AND CHARGES - Regulatory Component"]
[]
["Wholesale Market Service Rate",null,"$/kWh",{"$f":"'Rates Summary'!$F$19","v":4.4000000000000003E-3}]
["Rural Rate Protection Charge",null,"$/kWh",{"$f":"'Rates Summary'!$F$20","v":1.2999999999999999E-3}]
["Standard Supply Service - Administrative Charge (if applicable)",null,"$",{"$f":"'Rates Summary'!$F$21","v":0.25}]
["UNMETERED SCATTERED LOAD SERVICE CLASSIFICATION"]
[]
["This classification refers to an account taking electricity at 750 volts or less whose monthly average peak demand is less than, or is forecast to be less than, 50 kW and the consumption is unmetered. Such connections include cable TV power packs, bus shelters, telephone booths, traffic lights, railway crossings, etc. The customer will provide detailed manufacturer information/documentation with regard to electrical demand/consumption of the proposed unmetered load. Further servicing details are available in the distributor's Conditons of Service."]
["APPLICATION"]
[]
["The application of these rates and charges shall be in accordance with the Licence of the Distributor and any Code or Order of the Board, and amendments thereto as approved by the Board, which may be applicable to the administration of this schedule."]
["No rates and charges for the distribution of electricity and charges to meet the costs of any work or service done or furnished for the purpose of the distribution of electricity shall be made except as permitted by this schedule, unless required by the Distributor's Licence or a Code or Order of the Board, and amendments thereto as approved by the Board, or as specified herein."]
["Unless specifically noted, this schedule does not contain any charges for the electricity commodity, be it under the Regulated Price Plan, a contract with a retailer or the wholesale market price, as applicable. In addition, the charges in the MONTHLY RATES AND CHARGES - Regulatory Component of this schedule do not apply to a customer that is an embedded wholesale market participant."]
["It should be noted that this schedule does not list any changes, assessments or credits that are required by law to be invoiced by a distributor and that are not subject to Board approval, such as the Debt Retirement Charge, the Global Adjustment, the Ontario Clean Energy Benefit and the HST."]
[]
["MONTHLY RATES AND CHARGES - Delivery Component"]
[]
["Service Charge (per customer)",null,"$",{"$f":"'Rates Summary'!$I$32","v":6.46}]
["Distribution Volumetric Rate",null,"$/kWh",{"$f":"'Rates Summary'!$I$44","v":1.2800000000000001E-2}]
["Low Voltage Service Rate",null,"$/kWh",{"$f":"'Rates Summary'!$G$15","v":1.1999999999999999E-3}]
["Retail Transmission Rate - Network Service Rate",null,"$/kWh",{"$f":"'Rates Summary'!$G$17","v":7.1000000000000004E-3}]
["Retail Transmission Rate - Line and Transformation Connection Service Rate",null,"$/kWh",{"$f":"'Rates Summary'!$G$18","v":5.5999999999999999E-3}]
[]
[]
[]
[]
[]
[]
[]
[]
[]
[]
[]
[]
[]
[]
[]
[]
[]
[]
[]
[]
[]
[]
[]
[]
[]
[]
["MONTHLY RATES AND CHARGES - Regulatory Component"]
[]
["Wholesale Market Service Rate",null,"$/kWh",{"$f":"'Rates Summary'!$G$19","v":4.4000000000000003E-3}]
["Rural Rate Protection Charge",null,"$/kWh",{"$f":"'Rates Summary'!$H$20","v":1.2999999999999999E-3}]
["Standard Supply Service - Administrative Charge (if applicable)",null,"$",{"$f":"'Rates Summary'!$H$21","v":0.25}]
["STANDBY POWER on a FINAL BASIS SERVICE CLASSIFICATION"]
[]
["This classification refers to an account that has Load Displacement Generation and requires Kingston Hydro Corporation to provide back-up service. Further servicing details are available in the distributors's Conditions of Service."]
["APPLICATION"]
[]
["The application of these rates and charges shall be in accordance with the Licence of the Distributor and any Code or Order of the Board, and amendments thereto as approved by the Board, which may be applicable to the administration of this schedule."]
["No rates and charges for the distribution of electricity and charges to meet the costs of any work or service done or furnished for the purpose of the distribution of electricity shall be made except as permitted by this schedule, unless required by the Distributor's Licence or a Code or Order of the Board, and amendments thereto as approved by the Board, or as specified herein."]
["Unless specifically noted, this schedule does not contain any charges for the electricity commodity, be it under the Regulated Price Plan, a contract with a retailer or the wholesale market price, as applicable. In addition, the charges in the MONTHLY RATES AND CHARGES - Regulatory Component of this schedule do not apply to a customer that is an embedded wholesale market participant."]
["It should be noted that this schedule does not list any changes, assessments or credits that are required by law to be invoiced by a distributor and that are not subject to Board approval, such as the Debt Retirement Charge, the Global Adjustment, the Ontario Clean Energy Benefit and the HST."]
[]
["MONTHLY RATES AND CHARGES - Delivery Component"]
[]
["Standby Charges are to be applied to behind-the-meter generators that are not IESO market participants, FIT program participants, net-metered generators or retail generators, which have their own metering and settlement conventions as per regulation and legislation. \n\nStandby Charges are based on applicable applicable monthly General Service < 50kW,  General Service > 50kW to 4,999 kW or Large Use Distribution Volumetric Charges, depending on the rate classification of the generator host facility.\n\nIn the case where utility grade metering is not installed on the generator, Distribution Charges on the generator host facility’s load account will be determined by multiplying the peak hourly delivered load as measured by the load account meter in kW by applicable variable charges for the rate class. Standby Charges are determined by multiplying the nameplate capacity of the behind the meter generator in KW by applicable Standby Power charges in each month. \n\nThis type of scenario is preferable for our customers if the generator is a “baseload” or “24-7-365” generator such as a fuel cell CHP unit or pressure-drop turbine unit. It may also be preferable to the customer where the cost of utility grade metering is high or the size of the generator is very small relative to the demand of the host load customer. \n\nIn the case where utility grade metering is installed on the generator, Distribution Charges on the generator host facility’s load account will be determined by multiplying the peak hourly delivered load as measured by the load account meter in kW by applicable variable charges for the rate class. Standby Charges will be determined by multiplying the peak coincident combined kW delivered by both the distribution system and the generator, less the peak hourly delivered load in kW of the host customer facility as measured by the generator host load account meter.\n\nThis type of scenario is preferable for customers who wish to use generators or electricity storage facilities to participate in provincial conservation initiatives such as the IESO’s Demand Response or Industrial Conservation Initiatives, or reduce kWh consumption to contribute towards Kingston Hydro’s 2020 Conservation Targets, but are not able to operate their generators “24-7-365”.\n"]
[]
[]
[]
[]
[]
[]
[]
[]
[]
[]
[]
[]
[]
[]
[]
[]
[]
[]
[]
[]
[]
[]
[]
[]
[]
[]
[]
[]
[]
[]
["MONTHLY RATES AND CHARGES - Regulatory Component"]
[]
[]
[]
[]
["STREET LIGHTING SERVICE CLASSIFICATION"]
[]
["This classification refers to an account for roadway lighting with a Municipality, Regional Municipality, Ministry of Transportation and private roadway lighting operation, controlled by photo cells. The consumption for these customers will be based on the calculated connected load times the required lighting times established in the approved OEB street lighting load shape template. Further servicing details are available in the distributor's Conditions of Service."]
["APPLICATION"]
[]
["The application of these rates and charges shall be in accordance with the Licence of the Distributor and any Code or Order of the Board, and amendments thereto as approved by the Board, which may be applicable to the administration of this schedule."]
["No rates and charges for the distribution of electricity and charges to meet the costs of any work or service done or furnished for the purpose of the distribution of electricity shall be made except as permitted by this schedule, unless required by the Distributor's Licence or a Code or Order of the Board, and amendments thereto as approved by the Board, or as specified herein."]
["Unless specifically noted, this schedule does not contain any charges for the electricity commodity, be it under the Regulated Price Plan, a contract with a retailer or the wholesale market price, as applicable. In addition, the charges in the MONTHLY RATES AND CHARGES - Regulatory Component of this schedule do not apply to a customer that is an embedded wholesale market participant."]
["It should be noted that this schedule does not list any changes, assessments or credits that are required by law to be invoiced by a distributor and that are not subject to Board approval, such as the Debt Retirement Charge, the Global Adjustment, the Ontario Clean Energy Benefit and the HST."]
[]
["MONTHLY RATES AND CHARGES - Delivery Component"]
[]
["Service Charge (per light)",null,"$",{"$f":"'Rates Summary'!$I$33","v":1.31}]
["Distribution Volumetric Rate",null,"$/kW",{"$f":"'Rates Summary'!$I$45","v":14.8695}]
["Low Voltage Service Rate",null,"$/kW",{"$f":"'Rates Summary'!$H$15","v":0.33679999999999999}]
["Retail Transmission Rate - Network Service Rate",null,"$/kW",{"$f":"'Rates Summary'!$H$17","v":2.0078}]
["Retail Transmission Rate - Line and Transformation Connection Service Rate",null,"$/kW",{"$f":"'Rates Summary'!$H$18","v":1.6052999999999999}]
[]
[]
[]
[]
[]
[]
[]
[]
[]
[]
[]
[]
[]
[]
[]
[]
[]
[]
[]
[]
[]
[]
[]
[]
[]
[]
["MONTHLY RATES AND CHARGES - Regulatory Component"]
[]
["Wholesale Market Service Rate",null,"$/kWh",{"$f":"'Rates Summary'!$H$19","v":4.4000000000000003E-3}]
["Rural Rate Protection Charge",null,"$/kWh",{"$f":"'Rates Summary'!$H$20","v":1.2999999999999999E-3}]
["Standard Supply Service - Administrative Charge (if applicable)",null,"$",{"$f":"'Rates Summary'!$H$21","v":0.25}]
["MicroFIT SERVICE CLASSIFICATION"]
[]
["This classification applies to an electricity generation facility contracted under the Ontario Power Authority's microFIT program and connected to the distributor's distribution system. Further servicing details are available in the distributor's Conditions of Service."]
["APPLICATION"]
[]
["The application of these rates and charges shall be in accordance with the Licence of the Distributor and any Code or Order of the Board, and amendments thereto as approved by the Board, which may be applicable to the administration of this schedule."]
["No rates and charges for the distribution of electricity and charges to meet the costs of any work or service done or furnished for the purpose of the distribution of electricity shall be made except as permitted by this schedule, unless required by the Distributor's Licence or a Code or Order of the Board, and amendments thereto as approved by the Board, or as specified herein."]
["Unless specifically noted, this schedule does not contain any charges for the electricity commodity, be it under the Regulated Price Plan, a contract with a retailer or the wholesale market price, as applicable. In addition, the charges in the MONTHLY RATES AND CHARGES - Regulatory Component of this schedule do not apply to a customer that is an embedded wholesale market participant."]
["It should be noted that this schedule does not list any changes, assessments or credits that are required by law to be invoiced by a distributor and that are not subject to Board approval, such as the Debt Retirement Charge, the Global Adjustment, the Ontario Clean Energy Benefit and the HST."]
[]
["MONTHLY RATES AND CHARGES - Delivery Component"]
[]
["Service Charge",null,"$",5.4]
[]
[]
[]
[]
[]
[]
[]
[]
[]
[]
[]
[]
[]
[]
[]
[]
[]
[]
[]
[]
[]
[]
[]
[]
[]
[]
[]
[]
[]
[]
["MONTHLY RATES AND CHARGES - Regulatory Component"]
[]
["Wholesale Market Service Rate",null,"$/kWh",4.4000000000000003E-3]
["Rural Rate Protection Charge",null,"$/kWh",1.2999999999999999E-3]
["Standard Supply Service - Administrative Charge (if applicable)",null,"$",0.25]
[]
["ALLOWANCES"]
[]
["Transformer Allowance for Ownership - per kW of billing demand/month",null,"$/kW",-0.6]
[]
[]
["Primary Metering Allowance for transformer losses – applied to measured demand and energy",null,"%",-1]
[]
["SPECIFIC SERVICE CHARGES"]
[]
["APPLICATION"]
[]
["The application of these rates and charges shall be in accordance with the Licence of the Distributor and any Code or Order of the Board, and amendments thereto as approved by the Board, which may be applicable to the administration of this schedule."]
[]
["No charges to meet the costs of any work or service done or furnished for the purpose of the distribution of electricity shall be made except as permitted by this schedule, unless required by the Distributor’s Licence or a Code or Order of the Board, and amendments thereto as approved by the Board, or as specified herein."]
[]
["It should be noted that this schedule does not list any charges, assessments or credits that are required by law to be invoiced by a distributor and that are not subject to Board approval, such as the Debt Retirement Charge, the Global Adjustment, the Ontario Clean Energy Benefit and the HST."]
[]
["Customer Administration"]
[]
["Arrears certificate",null,"$",15]
["Statement of Account",null,"$",15]
["Request for other billing information",null,"$",15]
["Account History",null,"$",15]
["Returned cheque (plus bank charges)",null,"$",15]
["Legal letter",null,"$",15]
["Account set up charge/change of occupancy charge (plus credit agency costs if applicable)",null,"$",15]
["Special meter reads",null,"$",30]
["Meter dispute charge plus Measurement Canada fees (if meter found correct)",null,"$",30]
[]
[]
[]
[]
[]
[]
[]
[]
[]
[]
[]
[]
[]
[]
[]
[]
[]
[]
[]
[]
[]
[]
[]
[]
[]
[]
[]
["Non-Payment of Account"]
[]
["Late Payment – per month",null,"%",1.5]
["Late Payment – per annum",null,"%",19.559999999999999]
["Disconnect/Reconnect at meter – during regular hours",null,"$",65]
["Disconnect/Reconnect at meter – after regular hours",null,"$",185]
["Disconnect/Reconnect at pole – during regular hours",null,"$",185]
["Disconnect/Reconnect at pole – after regular hours",null,"$",415]
["Install/Remove load control device – during regular hours",null,"$",65]
["Install/Remove load control device – after regular hours",null,"$",185]
[]
[]
[]
[]
[]
[]
[]
[]
[]
[]
[]
[]
[]
[]
[]
[]
[]
["Other"]
[]
["Specific Charge for Access to the Power Poles - $/pole/year",null,"$",22.35]
["Layout fees",null,"$",200]
[]
[]
[]
[]
[]
[]
[]
[]
[]
[]
[]
[]
[]
[]
[]
[]
[]
[]
[]
[]
["RETAIL SERVICE CHARGES (if applicable)"]
[]
["The application of these rates and charges shall be in accordance with the Licence of the Distributor and any Code or Order of the Board, and amendments thereto as approved by the Board, which may be applicable to the administration of this schedule."]
[]
["No rates and charges for the distribution of electricity and charges to meet the costs of any work or service done or furnished for the purpose of the distribution of electricity shall be made except as permitted by this schedule, unless required by the Distributor’s Licence or a Code or Order of the Board, and amendments thereto as approved by the Board, or as specified herein."]
[]
["Unless specifically noted, this schedule does not contain any charges for the electricity commodity, be it under the Regulated Price Plan, a contract with a retailer or the wholesale market price, as applicable."]
[]
["It should be noted that this schedule does not list any charges, assessments or credits that are required by law to be invoiced by a distributor and that are not subject to Board approval, such as the Debt Retirement Charge, the Global Adjustment, the Ontario Clean Energy Benefit and the HST."]
[]
["Retail Service Charges refer to services provided by a distributor to retailers or customers related to the supply of competitive electricity."]
[]
["One-time charge, per retailer, to establish the service agreement between the distributor and the retailer",null,"$",100]
["Monthly Fixed Charge, per retailer",null,"$",20]
["Monthly Variable Charge, per customer, per retailer",null,"$/cust.",0.5]
["Distributor-consolidated billing monthly charge, per customer, per retailer",null,"$/cust.",0.3]
["Retailer-consolidated billing monthly credit, per customer, per retailer",null,"$/cust.",-0.3]
["Service Transaction Requests (STR) "]
["Request fee, per request, applied to the requesting party",null,"$",0.25]
["Processing fee, per request, applied to the requesting party",null,"$",0.5]
["Request for customer information as outlined in Section 10.6.3 and Chapter 11 of the Retail"]
["Settlement Code directly to retailers and customers, if not delivered electronically through the"]
["Electronic Business Transaction (EBT) system, applied to the requesting party "]
["Up to twice a year",null,"$","no charge"]
["More than twice a year, per request (plus incremental delivery costs)",null,"$",2]
[]
["LOSS FACTORS"]
[]
["If the distributor is not capable of prorating changed loss factors jointly with distribution rates, the revised loss factors will be implemented upon the first subsequent billing for each billing cycle."]
[]
[]
["Distribution Loss Factor - Secondary Metered Customer < 5,000 kW",null,null,1.0392999999999999]
["Distribution Loss Factor - Secondary Metered Customer > 5,000 kW",null,null,1.0187999999999999]
["Distribution Loss Factor - Primary Metered Customer < 5,000 kW",null,null,1.0288999999999999]
["Distribution Loss Factor - Primary Metered Customer > 5,000 kW",null,null,1.0085999999999999]

{"sheet":"LDC Info","index":31,"n_rows":99,"n_cols":27,"rows_kept":99,"cut":false,"hidden":false,"merged":[[45,4,45,6],[45,0,45,3],[50,2,50,11],[54,2,54,12],[52,2,52,13],[27,4,27,6],[30,4,30,6],[29,0,30,3],[42,0,43,3],[38,0,39,3],[39,4,39,6],[32,0,33,3],[33,4,33,6],[35,0,36,3],[43,4,43,6],[17,4,17,10],[13,4,13,10],[15,4,15,8],[19,4,19,8],[25,4,25,6],[23,4,23,6]]}
[]
[]
[null,null,null,null,null,null,null,null,null,null,null,null,null,null,null,null,null,null,null,null,null,null,null,null,null,null,"Algoma Power Inc."]
[null,null,null,null,null,null,null,null,null,null,null,null,null,null,null,null,null,null,null,null,null,null,null,null,null,null,"Atikokan Hydro Inc."]
[null,null,null,null,null,null,null,null,null,null,null,null,null,null,null,null,null,null,null,null,null,null,null,null,null,null,"Attawapiskat Power Corporation"]
[null,null,null,null,null,null,null,null,null,null,null,null,null,null,null,null,null,null,null,null,null,null,null,null,null,null,"Bluewater Power Distribution Corp."]
[null,null,null,null,null,null,null,null,null,null,null,null,null,null,null,null,null,null,null,null,null,null,null,null,null,null,"Brant County Power"]
[null,null,null,null,null,null,null,null,null,null,null,null,null,null,null,null,null,null,null,null,null,null,null,null,null,null,"Brantford Power Inc."]
[null,null,null,null,null,null,null,null,null,null,null,null,null,null,null,null,null,null,null,null,null,null,null,null,null,null,"Burlington Hydro Inc."]
[null,null,null,null,null,null,null,null,null,null,null,null,null,null,null,null,null,null,null,null,null,null,null,null,null,null,"Cambridge and North Dumfries Hydro"]
[null,null,null,null,null,null,null,null,null,null,null,null,null,null,null,null,null,null,null,null,null,null,null,null,null,null,"Canadian Niagara Power Inc. – Eastern Ontario Power/Fort Erie/Port Colborne"]
[null,null,null,null,null,null,null,null,null,null,null,null,null,null,null,null,null,null,null,null,null,null,null,null,null,null,"Centre Wellington Hydro Ltd."]
[null,null,null,null,null,null,null,null,null,null,null,null,null,null,null,null,null,null,null,null,null,null,null,null,null,null,"Chapleau Public Utilities Corporation"]
[null,null,null,"Utility Name   ","Kingston Hydro Corporation",null,null,null,null,null,null,null,null,null,null,null,null,null,null,null,null,null,null,null,null,null,"COLLUS Power Corp."]
[null,null,null,null,null,null,null,null,null,null,null,null,null,null,null,null,null,null,null,null,null,null,null,null,null,null,"Cooperative Hydro Embrun Inc."]
[null,null,null,"Assigned EB Number","EB-2015-0083",null,null,null,null,null,null,null,null,null,null,null,null,null,null,null,null,null,null,null,null,null,"E.L.K. Energy Inc."]
[null,null,null,null,null,null,null,null,null,null,null,null,null,null,null,null,null,null,null,null,null,null,null,null,null,null,"Enersource Hydro Mississauga Inc."]
[null,null,null,"Name of Contact and Title",null,null,null,null,null,null,null,null,null,null,null,null,null,null,null,null,null,null,null,null,null,null,"Entegrus Powerlines Inc."]
[null,null,null,null,null,null,null,null,null,null,null,null,null,null,null,null,null,null,null,null,null,null,null,null,null,null,"ENWIN Utilities Ltd."]
[null,null,null,"Phone Number   ",null,null,null,null,null,null,null,null,null,null,null,null,null,null,null,null,null,null,null,null,null,null,"Erie Thames Powerlines Corp."]
[null,null,null,null,null,null,null,null,null,null,null,null,null,null,null,null,null,null,null,null,null,null,null,null,null,null,"Espanola Regional Hydro Distribution Corporation"]
[null,null,null,"Email Address   ",null,null,null,null,null,null,null,null,null,null,null,null,null,null,null,null,null,null,null,null,null,null,"Essex Powerlines Corporation"]
[null,null,null,null,null,null,null,null,null,null,null,null,null,null,null,null,null,null,null,null,null,null,null,null,null,null,"Festival Hydro Inc."]
[null,null,null,"Test Year",2016,null,null,null,null,null,null,null,null,null,null,null,null,null,null,null,null,null,null,null,null,null,"Fort Albany Power Corporation"]
[null,null,null,null,null,null,null,null,null,null,null,null,null,null,null,null,null,null,null,null,null,null,null,null,null,null,"Fort Frances Power Corporation"]
[null,null,null,"Bridge Year",{"$f":"IF(ISBLANK(E24), \"\", E24-1)","v":2015},null,null,null,null,null,null,null,null,null,null,null,null,null,null,null,null,null,null,null,null,null,"Greater Sudbury Hydro Inc."]
[null,null,null,null,null,null,null,null,null,null,null,null,null,null,null,null,null,null,null,null,null,null,null,null,null,null,"Grimsby Power Inc."]
[null,null,null,"Last Rebasing Year",2011,null,null,null,null,null,null,null,null,null,null,null,null,null,null,null,null,null,null,null,null,null,"Guelph Hydro Electric Systems Inc."]
[null,null,null,null,null,null,null,null,null,null,null,null,null,null,null,null,null,null,null,null,null,null,null,null,null,null,"Haldimand County Hydro Inc."]
["Identify the accounting standard used for the test year"]
[]
[]
["Did you update your depreciation and capitalization policies?"]
[]
[]
["When did you update your depreciation and capitalization policies?"]
[null,null,null,null,"2001-01-01"]
[]
["Identify the year that the applicant has adopted or is expected to adopt IFRS for financial reporting purposes"]
[]
[]
[]
["Are you applying for cost recovery for the test and/or future year(s) for Green Energy initiatives?"]
[]
[]
[{"$f":"\"Is \" & E14 & \" an embedded distributor?\"","v":"Is Kingston Hydro Corporation an embedded distributor?"}]
[]
[]
[null,"Notes",null,null,null,null,null,null,null,null,null,null,null,null,null,null,null,null,null,null,null,null,null,null,null,null,"Guelph Hydro Electric Systems Inc."]
[null,null,null,null,null,null,null,null,null,null,null,null,null,null,null,null,null,null,null,null,null,null,null,null,null,null,"Halton Hills Hydro Inc."]
[null,null,"Pale green cells represent input cells.",null,null,null,null,null,null,null,null,null,null,null,null,null,null,null,null,null,null,null,null,null,null,null,"Hearst Power Distribution Co. Ltd."]
[null,null,null,null,null,null,null,null,null,null,null,null,null,null,null,null,null,null,null,null,null,null,null,null,null,null,"Horizon Utilities Corporation"]
[null,null,"Pale blue cells represent drop-down lists.  The applicant should select the appropriate item from the drop-down list.",null,null,null,null,null,null,null,null,null,null,null,null,null,null,null,null,null,null,null,null,null,null,null,"Hydro 2000 Inc."]
[null,null,null,null,null,null,null,null,null,null,null,null,null,null,null,null,null,null,null,null,null,null,null,null,null,null,"Hydro Hawkesbury Inc."]
[null,null,"White cells contain fixed values, automatically generated values or formulae. ",null,null,null,null,null,null,null,null,null,null,null,null,null,null,null,null,null,null,null,null,null,null,null,"Hydro One Brampton Networks Inc."]
[null,null,null,null,null,null,null,null,null,null,null,null,null,null,null,null,null,null,null,null,null,null,null,null,null,null,"Hydro One Networks Inc."]
[null,null,null,null,null,null,null,null,null,null,null,null,null,null,null,null,null,null,null,null,null,null,null,null,null,null,"Hydro One Remote Communities Inc."]
[null,null,null,null,null,null,null,null,null,null,null,null,null,null,null,null,null,null,null,null,null,null,null,null,null,null,"Hydro Ottawa Limited"]
[null,null,null,null,null,null,null,null,null,null,null,null,null,null,null,null,null,null,null,null,null,null,null,null,null,null,"Innisfil Hydro Dist. Systems Limited"]
[null,null,null,null,null,null,null,null,null,null,null,null,null,null,null,null,null,null,null,null,null,null,null,null,null,null,"Kashechewan Power Corporation"]
[null,null,null,null,null,null,null,null,null,null,null,null,null,null,null,null,null,null,null,null,null,null,null,null,null,null,"Kenora Hydro Electric Corporation Ltd."]
[null,null,null,null,null,null,null,null,null,null,null,null,null,null,null,null,null,null,null,null,null,null,null,null,null,null,"Kingston Hydro Corporation"]
[null,null,null,null,null,null,null,null,null,null,null,null,null,null,null,null,null,null,null,null,null,null,null,null,null,null,"Kitchener-Wilmot Hydro Inc."]
[null,null,null,null,null,null,null,null,null,null,null,null,null,null,null,null,null,null,null,null,null,null,null,null,null,null,"Lakefront Utilities Inc."]
[null,null,null,null,null,null,null,null,null,null,null,null,null,null,null,null,null,null,null,null,null,null,null,null,null,null,"Lakeland Power Distribution Ltd."]
[null,null,null,null,null,null,null,null,null,null,null,null,null,null,null,null,null,null,null,null,null,null,null,null,null,null,"London Hydro Inc."]
[null,null,null,null,null,null,null,null,null,null,null,null,null,null,null,null,null,null,null,null,null,null,null,null,null,null,"Midland Power Utility Corporation"]
[null,null,null,null,null,null,null,null,null,null,null,null,null,null,null,null,null,null,null,null,null,null,null,null,null,null,"Milton Hydro Distribution Inc."]
[null,null,null,null,null,null,null,null,null,null,null,null,null,null,null,null,null,null,null,null,null,null,null,null,null,null,"Newmarket – Tay Power Distribution Ltd."]
[null,null,null,null,null,null,null,null,null,null,null,null,null,null,null,null,null,null,null,null,null,null,null,null,null,null,"Niagara Peninsula Energy Inc."]
[null,null,null,null,null,null,null,null,null,null,null,null,null,null,null,null,null,null,null,null,null,null,null,null,null,null,"Niagara-on-the-Lake Hydro Inc."]
[null,null,null,null,null,null,null,null,null,null,null,null,null,null,null,null,null,null,null,null,null,null,null,null,null,null,"Norfolk Power Distribution Ltd."]
[null,null,null,null,null,null,null,null,null,null,null,null,null,null,null,null,null,null,null,null,null,null,null,null,null,null,"North Bay Hydro Distribution Limited"]
[null,null,null,null,null,null,null,null,null,null,null,null,null,null,null,null,null,null,null,null,null,null,null,null,null,null,"Northern Ontario Wires Inc."]
[null,null,null,null,null,null,null,null,null,null,null,null,null,null,null,null,null,null,null,null,null,null,null,null,null,null,"Oakville Hydro Distribution Inc."]
[null,null,null,null,null,null,null,null,null,null,null,null,null,null,null,null,null,null,null,null,null,null,null,null,null,null,"Orangeville Hydro Limited"]
[null,null,null,null,null,null,null,null,null,null,null,null,null,null,null,null,null,null,null,null,null,null,null,null,null,null,"Orillia Power Distribution Corp."]
[null,null,null,null,null,null,null,null,null,null,null,null,null,null,null,null,null,null,null,null,null,null,null,null,null,null,"Oshawa PUC Networks Inc."]
[null,null,null,null,null,null,null,null,null,null,null,null,null,null,null,null,null,null,null,null,null,null,null,null,null,null,"Ottawa River Power Corporation"]
[null,null,null,null,null,null,null,null,null,null,null,null,null,null,null,null,null,null,null,null,null,null,null,null,null,null,"Parry Sound Power Corporation"]
[null,null,null,null,null,null,null,null,null,null,null,null,null,null,null,null,null,null,null,null,null,null,null,null,null,null,"Peterborough Distribution Inc."]
[null,null,null,null,null,null,null,null,null,null,null,null,null,null,null,null,null,null,null,null,null,null,null,null,null,null,"PowerStream Inc."]
[null,null,null,null,null,null,null,null,null,null,null,null,null,null,null,null,null,null,null,null,null,null,null,null,null,null,"PUC Distribution Inc."]
[null,null,null,null,null,null,null,null,null,null,null,null,null,null,null,null,null,null,null,null,null,null,null,null,null,null,"Renfrew Hydro Inc."]
[null,null,null,null,null,null,null,null,null,null,null,null,null,null,null,null,null,null,null,null,null,null,null,null,null,null,"Rideau St. Lawrence Distribution Inc."]
[null,null,null,null,null,null,null,null,null,null,null,null,null,null,null,null,null,null,null,null,null,null,null,null,null,null,"St. Thomas Energy Inc."]
[null,null,null,null,null,null,null,null,null,null,null,null,null,null,null,null,null,null,null,null,null,null,null,null,null,null,"Sioux Lookout Hydro Inc."]
[null,null,null,null,null,null,null,null,null,null,null,null,null,null,null,null,null,null,null,null,null,null,null,null,null,null,"Thunder Bay Hydro Electricity Distribution"]
[null,null,null,null,null,null,null,null,null,null,null,null,null,null,null,null,null,null,null,null,null,null,null,null,null,null,"Tillsonburg Hydro Inc."]
[null,null,null,null,null,null,null,null,null,null,null,null,null,null,null,null,null,null,null,null,null,null,null,null,null,null,"Toronto Hydro-Electric System Limited"]
[null,null,null,null,null,null,null,null,null,null,null,null,null,null,null,null,null,null,null,null,null,null,null,null,null,null,"Veridian Connections Inc."]
[null,null,null,null,null,null,null,null,null,null,null,null,null,null,null,null,null,null,null,null,null,null,null,null,null,null,"Wasaga Distribution Inc."]
[null,null,null,null,null,null,null,null,null,null,null,null,null,null,null,null,null,null,null,null,null,null,null,null,null,null,"Waterloo North Hydro Inc."]
[null,null,null,null,null,null,null,null,null,null,null,null,null,null,null,null,null,null,null,null,null,null,null,null,null,null,"Welland Hydro Electric System Corp."]
[null,null,null,null,null,null,null,null,null,null,null,null,null,null,null,null,null,null,null,null,null,null,null,null,null,null,"Wellington North Power Inc."]
[null,null,null,null,null,null,null,null,null,null,null,null,null,null,null,null,null,null,null,null,null,null,null,null,null,null,"West Coast Huron Energy Inc."]
[null,null,null,null,null,null,null,null,null,null,null,null,null,null,null,null,null,null,null,null,null,null,null,null,null,null,"Westario Power Inc."]
[null,null,null,null,null,null,null,null,null,null,null,null,null,null,null,null,null,null,null,null,null,null,null,null,null,null,"Whitby Hydro Electric Corporation"]
[null,null,null,null,null,null,null,null,null,null,null,null,null,null,null,null,null,null,null,null,null,null,null,null,null,null,"Woodstock Hydro Services Inc."]

{"sheet":"App.2-FA Proposed REG Inves (2","index":32,"n_rows":92,"n_cols":7,"rows_kept":92,"cut":false,"hidden":true,"merged":[[16,0,16,6],[17,0,17,6],[8,0,8,6],[9,0,9,6],[11,0,11,6],[12,0,12,6],[13,0,13,5],[14,0,14,5]]}
[null,null,null,null,null,"File Number:",{"$f":"EBNUMBER","v":"EB-2015-0083"}]
[null,null,null,null,null,"Exhibit:"]
[null,null,null,null,null,"Tab:"]
[null,null,null,null,null,"Schedule:"]
[null,null,null,null,null,"Page:"]
[]
[null,null,null,null,null,"Date:"]
[]
["Appendix 2-FA"]
["Renewable Generation Connection Investment Summary (over the rate setting period)"]
[]
["Enter the details of the Renewable Generation Connection projects as described in Section 2.5.2.5 of the Filing Requirements."]
["All costs entered on this page will be transferred to the appropriate cells in the appendices that follow."]
["For Part A, Renewable Enabling Improvements (REI), these amounts will be transferred to Appendix 2 - FB"]
["For Part B, Expansions, these amounts will be transferred to Appendix 2 - FC"]
[]
["If there are more than five projects proposed to be in-service in a certain year, please amend the tables below and ensure that the formulae for the Total Amounts in any given rate year are updated."]
["Based on the current methodology and allocation, amounts allocated represent 6% for REI Connection Investments and 17% for Expansion Investments. (pg 15, EB-2009-0349)"]
[]
[]
["Part A"]
["REI Investments (Direct Benefit at 6%)",null,2015,{"$f":"C22+1","v":2016},{"$f":"D22+1","v":2017},2018,2019]
["Project 1"]
["Name: REI Connection Project"]
["Capital Costs",null,1000,0,1000,0,0]
["OM&A (Start-Up)",null,0,0,0,0,0]
["OM&A (Ongoing)",null,0,0,0,0,0]
[]
["Project 2"]
["Name: REI Connection Project"]
["Capital Costs",null,0,0,0,0,0]
["OM&A (Start-Up)",null,0,0,0,0,0]
["OM&A (Ongoing)",null,0,0,0,0,0]
[]
["Project 3"]
["Name: REI Connection Project"]
["Capital Costs",null,0,0,0,0,0]
["OM&A (Start-Up)",null,0,0,0,0,0]
["OM&A (Ongoing)",null,0,0,0,0,0]
[]
["Project 4"]
["Name: REI Connection Project"]
["Capital Costs",null,0,0,0,0,0]
["OM&A (Start-Up)",null,0,0,0,0,0]
["OM&A (Ongoing)",null,0,0,0,0,0]
[]
["Project 5"]
["Name: REI Connection Project"]
["Capital Costs",null,0,0,0,0,0]
["OM&A (Start-Up)",null,0,0,0,0,0]
["OM&A (Ongoing)",null,0,0,0,0,0]
[]
["Total Capital Costs",null,{"$f":"SUM(C49,C43,C37,C31,C25)","v":1000},{"$f":"SUM(D49,D43,D37,D31,D25)","v":0},1000,0,0]
["Total OM&A (Start-Up)",null,{"$f":"SUM(C50,C44,C38,C32,C26)","v":0},0,0,0,0]
["Total OM&A (Ongoing)",null,{"$f":"SUM(C51,C45,C39,C33,C27)","v":0},0,0,0,0]
[]
[]
["Part B"]
["Expansion Investments (Direct Benefit at 17%)",null,2015,{"$f":"C59+1","v":2016},{"$f":"D59+1","v":2017},2018,2019]
["Project 1"]
["Name: Expansion Connection Project"]
["Capital Costs",null,0,0,0,0,0]
["OM&A (Start-Up)",null,0,0,0,0,0]
["OM&A (Ongoing)",null,0,0,0,0,0]
[]
["Project 2"]
["Name: Expansion Connection Project"]
["Capital Costs",null,0,0,0,0,0]
["OM&A (Start-Up)",null,0,0,0,0,0]
["OM&A (Ongoing)",null,0,0,0,0,0]
[]
["Project 3"]
["Name: Expansion Connection Project"]
["Capital Costs",null,0,0,0,0,0]
["OM&A (Start-Up)",null,0,0,0,0,0]
["OM&A (Ongoing)",null,0,0,0,0,0]
[]
["Project 4"]
["Name: Expansion Connection Project"]
["Capital Costs",null,0,0,0,0,0]
["OM&A (Start-Up)",null,0,0,0,0,0]
["OM&A (Ongoing)",null,0,0,0,0,0]
[]
["Project 5"]
["Name: Expansion Connection Project"]
["Capital Costs",null,0,0,0,0,0]
["OM&A (Start-Up)",null,0,0,0,0,0]
["OM&A (Ongoing)",null,0,0,0,0,0]
[]
["Total Capital Costs",null,{"$f":"SUM(C86,C80,C74,C68,C62)","v":0},{"$f":"SUM(D86,D80,D74,D68,D62)","v":0},0,0,0]
["Total OM&A (Start-Up)",null,{"$f":"SUM(C87,C81,C75,C69,C63)","v":0},0,0,0,0]
["Total OM&A (Ongoing)",null,{"$f":"SUM(C88,C82,C76,C70,C64)","v":0},0,0,0,0]

{"sheet":"App.2-FB Calc of REG Improv (2","index":33,"n_rows":95,"n_cols":18,"rows_kept":95,"cut":false,"hidden":true,"merged":[[51,4,51,5],[51,7,51,8],[51,10,51,11],[51,13,51,14],[51,16,51,17],[16,9,16,11],[16,12,16,14],[16,15,16,17],[46,0,46,11],[48,0,48,11],[49,0,49,1],[8,0,8,6],[9,0,9,6],[11,0,11,6],[12,0,12,6],[13,0,13,6],[16,3,16,5],[16,6,16,8]]}
[null,null,null,null,null,"File Number:",{"$f":"EBNUMBER","v":"EB-2015-0083"}]
[null,null,null,null,null,"Exhibit:"]
[null,null,null,null,null,"Tab:"]
[null,null,null,null,null,"Schedule:"]
[null,null,null,null,null,"Page:"]
[]
[null,null,null,null,null,"Date:"]
[]
["Appendix 2-FB"]
["Calculation of Renewable Generation Connection Direct Benefits/Provincial Amount: Renewable Enabling Improvement Investments"]
[]
["This table will calculate the distributor/provincial shares of the investments entered in Part A of Appendix 2-FA."]
["Enter values in green shaded cells: WCA percentage, debt percentages, interest rates, kWh, tax rates, amortization period, CCA Class and percentage."]
["Rate Riders are not calculated for Test Year as these assets and costs are already in the distributor's rate base/revenue requirement."]
[]
[]
[null,null,null,"2015 Test Year",null,null,2016,null,null,2017,2016,null,2018,null,null,2019]
[null,null,null,null,"Direct Benefit","Provincial",null,"Direct Benefit","Provincial",null,"Direct Benefit","Provincial",null,"Direct Benefit","Provincial",null,"Direct Benefit","Provincial"]
[null,null,null,"Total",0.06,0.94,"Total",0.06,0.94,"Total",0.06,0.94,"Total",0.06,0.94,"Total",0.06,0.94]
["Net Fixed Assets (average)",null,null,{"$f":"D82","v":490},{"$f":"D20*E19","v":29.4},{"$f":"D20*F19","v":460.59999999999997},{"$f":"E82","v":960},{"$f":"G20*H19","v":57.599999999999994},{"$f":"G20*I19","v":902.4},{"$f":"F82","v":1410},{"$f":"J20*K19","v":84.6},{"$f":"J20*L19","v":1325.3999999999999},{"$f":"G82","v":1840},{"$f":"M20*N19","v":110.39999999999999},{"$f":"M20*O19","v":1729.6},{"$f":"H82","v":1760},{"$f":"P20*Q19","v":105.6},{"$f":"P20*R19","v":1654.3999999999999}]
["Incremental OM&A (on-going, N/A for Provincial Recovery)",null,null,{"$f":"'App.2-FA Proposed REG Inves (2'!C55","v":0},{"$f":"D21","v":0},null,{"$f":"'App.2-FA Proposed REG Inves (2'!D55","v":0},{"$f":"G21","v":0},null,{"$f":"'App.2-FA Proposed REG Inves (2'!E55","v":0},{"$f":"J21","v":0},null,{"$f":"'App.2-FA Proposed REG Inves (2'!F55","v":0},{"$f":"M21","v":0},null,{"$f":"'App.2-FA Proposed REG Inves (2'!G55","v":0},{"$f":"P21","v":0}]
["Incremental OM&A (start-up, applicable for Provincial Recovery)",null,null,{"$f":"'App.2-FA Proposed REG Inves (2'!C54","v":0},{"$f":"D22*E19","v":0},{"$f":"D22*F19","v":0},{"$f":"'App.2-FA Proposed REG Inves (2'!D54","v":0},{"$f":"G22*H19","v":0},{"$f":"G22*I19","v":0},{"$f":"'App.2-FA Proposed REG Inves (2'!E54","v":0},{"$f":"J22*K19","v":0},{"$f":"J22*L19","v":0},{"$f":"'App.2-FA Proposed REG Inves (2'!F54","v":0},{"$f":"M22*N19","v":0},{"$f":"M22*O19","v":0},{"$f":"'App.2-FA Proposed REG Inves (2'!G54","v":0},{"$f":"P22*Q19","v":0},{"$f":"P22*R19","v":0}]
["WCA",0.13,null,null,{"$f":"(E21+E22)*$B$23","v":0},{"$f":"F22*$B$23","v":0},null,{"$f":"(H21+H22)*$B$23","v":0},{"$f":"I22*$B$23","v":0},null,{"$f":"(K21+K22)*$B$23","v":0},{"$f":"L22*$B$23","v":0},null,{"$f":"(N21+N22)*$B$23","v":0},{"$f":"O22*$B$23","v":0},null,{"$f":"(Q21+Q22)*$B$23","v":0},{"$f":"R22*$B$23","v":0}]
["Rate Base",null,null,null,{"$f":"SUM(E20+E23)","v":29.4},{"$f":"SUM(F20+F23)","v":460.59999999999997},null,{"$f":"SUM(H20+H23)","v":57.599999999999994},{"$f":"SUM(I20+I23)","v":902.4},null,{"$f":"SUM(K20+K23)","v":84.6},{"$f":"SUM(L20+L23)","v":1325.3999999999999},null,{"$f":"SUM(N20+N23)","v":110.39999999999999},{"$f":"SUM(O20+O23)","v":1729.6},null,{"$f":"SUM(Q20+Q23)","v":105.6},{"$f":"SUM(R20+R23)","v":1654.3999999999999}]
[]
[]
["Deemed ST Debt",0.04,null,null,{"$f":"E24*$B$27","v":1.1759999999999999},{"$f":"F24*$B$27","v":18.423999999999999},null,{"$f":"H24*$B$27","v":2.3039999999999998},{"$f":"I24*$B$27","v":36.095999999999997},null,{"$f":"K24*$B$27","v":3.3839999999999999},{"$f":"L24*$B$27","v":53.015999999999998},null,{"$f":"N24*$B$27","v":4.4159999999999995},{"$f":"O24*$B$27","v":69.183999999999997},null,{"$f":"Q24*$B$27","v":4.2240000000000002},{"$f":"R24*$B$27","v":66.176000000000002}]
["Deemed LT Debt",0.56000000000000005,null,null,{"$f":"E24*$B$28","v":16.464000000000002},{"$f":"F24*$B$28","v":257.93599999999998},null,{"$f":"H24*$B$28","v":32.256},{"$f":"I24*$B$28","v":505.34400000000005},null,{"$f":"K24*$B$28","v":47.376000000000005},{"$f":"L24*$B$28","v":742.22400000000005},null,{"$f":"N24*$B$28","v":61.823999999999998},{"$f":"O24*$B$28","v":968.57600000000002},null,{"$f":"Q24*$B$28","v":59.136000000000003},{"$f":"R24*$B$28","v":926.46400000000006}]
["Deemed Equity",0.4,null,null,{"$f":"E24*$B$29","v":11.76},{"$f":"F24*$B$29","v":184.24},null,{"$f":"H24*$B$29","v":23.04},{"$f":"I24*$B$29","v":360.96000000000004},null,{"$f":"K24*$B$29","v":33.839999999999996},{"$f":"L24*$B$29","v":530.16},null,{"$f":"N24*$B$29","v":44.16},{"$f":"O24*$B$29","v":691.84},null,{"$f":"Q24*$B$29","v":42.24},{"$f":"R24*$B$29","v":661.76}]
[]
["ST Interest",2.4E-2,null,null,{"$f":"E27*$B31","v":2.8223999999999999E-2},{"$f":"F27*$B31","v":0.44217600000000001},null,{"$f":"H27*$B31","v":5.5295999999999998E-2},{"$f":"I27*$B31","v":0.86630399999999996},null,{"$f":"K27*$B31","v":8.1215999999999997E-2},{"$f":"L27*$B31","v":1.272384},null,{"$f":"N27*$B31","v":0.10598399999999999},{"$f":"O27*$B31","v":1.6604159999999999},null,{"$f":"Q27*$B31","v":0.10137600000000001},{"$f":"R27*$B31","v":1.5882240000000001}]
["LT Interest",5.6000000000000001E-2,null,null,{"$f":"E28*$B32","v":0.92198400000000014},14.444415999999999,null,{"$f":"H28*$B32","v":1.8063359999999999},28.299264000000004,null,{"$f":"K28*$B32","v":2.6530560000000003},41.564544000000005,null,{"$f":"N28*$B32","v":3.4621439999999999},54.240256000000002,null,{"$f":"Q28*$B32","v":3.3116160000000003},51.881984000000003]
["ROE",8.5000000000000006E-2,null,null,0.99960000000000004,15.660400000000003,null,1.9584000000000001,30.681600000000007,null,2.8763999999999998,45.063600000000001,null,3.7536,58.806400000000004,null,3.5904000000000003,56.249600000000001]
["Cost of Capital Total",null,null,null,{"$f":"SUM(E31:E33)","v":1.9498080000000002},{"$f":"SUM(F31:F33)","v":30.546992000000003},null,{"$f":"SUM(H31:H33)","v":3.8200320000000003},{"$f":"SUM(I31:I33)","v":59.847168000000011},null,{"$f":"SUM(K31:K33)","v":5.6106720000000001},{"$f":"SUM(L31:L33)","v":87.900528000000008},null,{"$f":"SUM(N31:N33)","v":7.3217280000000002},{"$f":"SUM(O31:O33)","v":114.70707200000001},null,{"$f":"SUM(Q31:Q33)","v":7.0033920000000007},{"$f":"SUM(R31:R33)","v":109.719808}]
[]
["OM&A",null,null,null,{"$f":"E21+E22","v":0},{"$f":"F22","v":0},null,{"$f":"H21+H22","v":0},{"$f":"I22","v":0},null,{"$f":"K21+K22","v":0},{"$f":"L22","v":0},null,{"$f":"N21+N22","v":0},{"$f":"O22","v":0},null,{"$f":"Q21+Q22","v":0},{"$f":"R22","v":0}]
["Amortization",null,null,{"$f":"D77","v":20},{"$f":"D37*E$19","v":1.2},{"$f":"D37*F$19","v":18.799999999999997},{"$f":"E76+E77","v":40},{"$f":"G37*H$19","v":2.4},{"$f":"G37*I$19","v":37.599999999999994},{"$f":"F76+F77","v":60},{"$f":"J37*K$19","v":3.5999999999999996},{"$f":"J37*L$19","v":56.4},{"$f":"G76+G77","v":80},{"$f":"M37*N$19","v":4.8},{"$f":"M37*O$19","v":75.199999999999989},{"$f":"H76+H77","v":80},{"$f":"P37*Q$19","v":4.8},{"$f":"P37*R$19","v":75.199999999999989}]
["Grossed-up PILs",null,null,null,{"$f":"E65","v":0},{"$f":"F65","v":0},null,{"$f":"H65","v":0},{"$f":"I65","v":0},null,{"$f":"K65","v":0},{"$f":"L65","v":0},null,{"$f":"N65","v":0},{"$f":"O65","v":0},null,{"$f":"Q65","v":0},{"$f":"R65","v":0}]
[]
["Revenue Requirement",null,null,null,{"$f":"SUM(E34:E38)","v":3.1498080000000002},{"$f":"SUM(F34:F38)","v":49.346992},null,{"$f":"SUM(H34:H38)","v":6.2200319999999998},{"$f":"SUM(I34:I38)","v":97.447168000000005},null,{"$f":"SUM(K34:K38)","v":9.2106719999999989},{"$f":"SUM(L34:L38)","v":144.30052800000001},null,{"$f":"SUM(N34:N38)","v":12.121728000000001},{"$f":"SUM(O34:O38)","v":189.907072},null,{"$f":"SUM(Q34:Q38)","v":11.803392000000001},{"$f":"SUM(R34:R38)","v":184.91980799999999}]
[]
[]
["Provincial Rate Protection",null,null,null,null,{"$f":"F40","v":49.346992},null,null,{"$f":"I40","v":97.447168000000005},null,null,{"$f":"L40","v":144.30052800000001},null,null,{"$f":"O40","v":189.907072},null,null,{"$f":"R40","v":184.91980799999999}]
[]
["Monthly Amount Paid by IESO",null,null,null,null,{"$f":"F43/12","v":4.1122493333333336},null,null,{"$f":"I43/12","v":8.1205973333333343},null,null,{"$f":"L43/12","v":12.025044000000001},null,null,{"$f":"O43/12","v":15.825589333333333},null,null,{"$f":"R43/12","v":15.409984}]
[]
["Note 1: The difference between the actual costs of approved eligible investments and revenue received from the IESO should be recorded in a variance account.  The Board may provide "]
["regulatory accounting guidance regarding a variance account either in an individual proceeding or on a generic basis."]
["Note 2: For the 2014 Test Year, Costs and Revenues of the Direct Benefit are to be included in the test year applicant Rate Base and Revenues.  "]
[]
["PILs Calculation"]
[null,null,null,null,2015,null,null,{"$f":"E52+1","v":2016},null,null,{"$f":"H52+1","v":2017},null,null,{"$f":"K52+1","v":2018},null,null,{"$f":"N52+1","v":2019}]
["Income Tax",null,null,null,"Direct Benefit","Provincial",null,"Direct Benefit","Provincial",null,"Direct Benefit","Provincial",null,"Direct Benefit","Provincial",null,"Direct Benefit","Provincial"]
[null,null,null,null,null,null,null,null,null,null,null,null,"Total",null,null,"Total"]
["Net Income - ROE on Rate Base",null,null,null,{"$f":"E33","v":0.99960000000000004},{"$f":"F33","v":15.660400000000003},null,{"$f":"H33","v":1.9584000000000001},{"$f":"I33","v":30.681600000000007},null,{"$f":"K33","v":2.8763999999999998},{"$f":"L33","v":45.063600000000001},null,{"$f":"N33","v":3.7536},{"$f":"O33","v":58.806400000000004},null,{"$f":"Q33","v":3.5904000000000003},{"$f":"R33","v":56.249600000000001}]
["Amortization (6% DB and 94% P)",null,null,null,{"$f":"E37","v":1.2},{"$f":"F37","v":18.799999999999997},null,{"$f":"H37","v":2.4},{"$f":"I37","v":37.599999999999994},null,{"$f":"K37","v":3.5999999999999996},{"$f":"L37","v":56.4},null,{"$f":"N37","v":4.8},{"$f":"O37","v":75.199999999999989},null,{"$f":"Q37","v":4.8},{"$f":"R37","v":75.199999999999989}]
["CCA (6% DB and 94% P)",null,null,null,{"$f":"-D94*E$19","v":-2.4},{"$f":"-D94*F$19","v":-37.599999999999994},null,{"$f":"-E94*H$19","v":-4.6079999999999997},{"$f":"-E94*I$19","v":-72.191999999999993},null,{"$f":"-F94*K$19","v":-4.2393600000000005},{"$f":"-F94*L$19","v":-66.416640000000001},null,{"$f":"-G94*N$19","v":-3.9002112000000002},{"$f":"-G94*O$19","v":-61.103308800000008},null,{"$f":"-H94*Q$19","v":-3.5881943040000004},{"$f":"-H94*R$19","v":-56.215044096000007}]
["Taxable income",null,null,null,{"$f":"SUM(E55:E57)","v":-0.20039999999999969},{"$f":"SUM(F55:F57)","v":-3.1395999999999944},null,{"$f":"SUM(H55:H57)","v":-0.24960000000000004},{"$f":"SUM(I55:I57)","v":-3.9103999999999957},null,{"$f":"SUM(K55:K57)","v":2.2370399999999995},{"$f":"SUM(L55:L57)","v":35.046959999999999},null,{"$f":"SUM(N55:N57)","v":4.6533887999999992},{"$f":"SUM(O55:O57)","v":72.903091199999977},null,{"$f":"SUM(Q55:Q57)","v":4.8022056959999997},{"$f":"SUM(R55:R57)","v":75.234555903999961}]
[]
["Tax Rate  (to be entered)"]
[]
["Income Taxes Payable",null,null,null,{"$f":"E58*E60","v":0},{"$f":"F58*F60","v":0},null,{"$f":"H58*H60","v":0},{"$f":"I58*I60","v":0},null,{"$f":"K58*K60","v":0},{"$f":"L58*L60","v":0},null,{"$f":"N58*N60","v":0},{"$f":"O58*O60","v":0},null,{"$f":"Q58*Q60","v":0},{"$f":"R58*R60","v":0}]
["Gross Up"]
["Income Taxes Payable",null,null,null,{"$f":"E62/(1-E60)","v":0},{"$f":"F62/(1-F60)","v":0},null,{"$f":"H62/(1-H60)","v":0},{"$f":"I62/(1-I60)","v":0},null,{"$f":"K62/(1-K60)","v":0},{"$f":"L62/(1-L60)","v":0},null,{"$f":"N62/(1-N60)","v":0},{"$f":"O62/(1-O60)","v":0},null,{"$f":"Q62/(1-Q60)","v":0},{"$f":"R62/(1-R60)","v":0}]
["Grossed Up PILs",null,null,null,{"$f":"SUM(E64:E64)","v":0},{"$f":"SUM(F64:F64)","v":0},null,{"$f":"SUM(H64:H64)","v":0},{"$f":"SUM(I64:I64)","v":0},null,{"$f":"SUM(K64:K64)","v":0},{"$f":"SUM(L64:L64)","v":0},null,{"$f":"SUM(N64:N64)","v":0},{"$f":"SUM(O64:O64)","v":0},null,{"$f":"SUM(Q64:Q64)","v":0},{"$f":"SUM(R64:R64)","v":0}]
[]
[]
[null,null,null,2015,{"$f":"D68+1","v":2016},{"$f":"E68+1","v":2017},2018,2019]
["Net Fixed Assets"]
[null,"Enter applicable amortization in years:",25]
["Opening Gross Fixed Assets",null,null,null,{"$f":"D73","v":1000},{"$f":"E73","v":1000},{"$f":"F73","v":2000},{"$f":"G73","v":2000}]
["Gross Capital Additions",null,null,{"$f":"'App.2-FA Proposed REG Inves (2'!C53","v":1000},{"$f":"'App.2-FA Proposed REG Inves (2'!D53","v":0},{"$f":"'App.2-FA Proposed REG Inves (2'!E53","v":1000},{"$f":"'App.2-FA Proposed REG Inves (2'!F53","v":0},{"$f":"'App.2-FA Proposed REG Inves (2'!G53","v":0}]
["Closing Gross Fixed Assets",null,null,{"$f":"SUM(D71:D72)","v":1000},{"$f":"SUM(E71:E72)","v":1000},2000,2000,2000]
[]
["Opening Accumulated Amortization",null,null,null,{"$f":"D78","v":20},{"$f":"E78","v":60},{"$f":"F78","v":120},{"$f":"G78","v":200}]
["Current Year Amortization (before additions)",null,null,null,{"$f":"IF(ISERROR(E71/$C$70), 0, E71/$C$70)","v":40},{"$f":"IF(ISERROR(F71/$C$70), 0, F71/$C$70)","v":40},{"$f":"IF(ISERROR(G71/$C$70), 0, G71/$C$70)","v":80},{"$f":"IF(ISERROR(H71/$C$70), 0, H71/$C$70)","v":80}]
["Additions (half year)",null,null,{"$f":"D72/C70/2","v":20},{"$f":"E72/C70/2","v":0},{"$f":"F72/C70/2","v":20},{"$f":"G72/C70/2","v":0},{"$f":"H72/C70/2","v":0}]
["Closing Accumulated Amortization",null,null,{"$f":"SUM(D75+D77)","v":20},{"$f":"SUM(E75:E77)","v":60},{"$f":"SUM(F75:F77)","v":120},{"$f":"SUM(G75:G77)","v":200},{"$f":"SUM(H75:H77)","v":280}]
[]
["Opening Net Fixed Assets",null,null,{"$f":"D71-D75","v":0},{"$f":"D81","v":980},{"$f":"E81","v":940},{"$f":"F81","v":1880},{"$f":"G81","v":1800}]
["Closing Net Fixed Assets",null,null,{"$f":"D73-D78","v":980},{"$f":"E73-E78","v":940},{"$f":"F73-F78","v":1880},{"$f":"G73-G78","v":1800},{"$f":"H73-H78","v":1720}]
["Average Net Fixed Assets",null,null,{"$f":"SUM(D80:D81)/2","v":490},{"$f":"SUM(E80:E81)/2","v":960},{"$f":"SUM(F80:F81)/2","v":1410},{"$f":"SUM(G80:G81)/2","v":1840},{"$f":"SUM(H80:H81)/2","v":1760}]
[]
["UCC for PILs Calculation"]
[null,null,null,2015,{"$f":"D85+1","v":2016},{"$f":"E85+1","v":2017},2018,2019]
[]
["Opening UCC",null,null,null,{"$f":"D95","v":960},{"$f":"E95","v":883.2},{"$f":"F95","v":812.5440000000001},{"$f":"G95","v":747.54048000000012}]
["Capital Additions (from Appendix 2-FA)",null,null,{"$f":"D72","v":1000},{"$f":"'App.2-FA Proposed REG Inves (2'!D31","v":0},{"$f":"'App.2-FA Proposed REG Inves (2'!E31","v":0},{"$f":"'App.2-FA Proposed REG Inves (2'!F31","v":0},{"$f":"'App.2-FA Proposed REG Inves (2'!G31","v":0}]
["UCC Before Half Year Rule",null,null,{"$f":"SUM(D87:D88)","v":1000},{"$f":"SUM(E87:E88)","v":960},{"$f":"SUM(F87:F88)","v":883.2},{"$f":"SUM(G87:G88)","v":812.5440000000001},{"$f":"SUM(H87:H88)","v":747.54048000000012}]
["Half Year Rule (1/2 Additions - Disposals)",null,null,{"$f":"D88/2","v":500},{"$f":"E88/2","v":0},{"$f":"F88/2","v":0},{"$f":"G88/2","v":0},{"$f":"H88/2","v":0}]
["Reduced UCC",null,null,{"$f":"D89-D90","v":500},{"$f":"E89-E90","v":960},{"$f":"F89-F90","v":883.2},{"$f":"G89-G90","v":812.5440000000001},{"$f":"H89-H90","v":747.54048000000012}]
["CCA Rate Class (to be entered)",null,47,{"$f":"C92","v":47},{"$f":"C92","v":47},{"$f":"C92","v":47},{"$f":"C92","v":47},{"$f":"C92","v":47}]
["CCA Rate  (to be entered)",null,0.08,{"$f":"C93","v":0.08},{"$f":"C93","v":0.08},{"$f":"C93","v":0.08},{"$f":"C93","v":0.08},{"$f":"C93","v":0.08}]
["CCA",null,null,{"$f":"D91*D93","v":40},{"$f":"E91*E93","v":76.8},70.656000000000006,65.003520000000009,{"$f":"H91*H93","v":59.803238400000012}]
["Closing UCC",null,null,{"$f":"D89-D94","v":960},{"$f":"E89-E94","v":883.2},{"$f":"F89-F94","v":812.5440000000001},{"$f":"G89-G94","v":747.54048000000012},{"$f":"H89-H94","v":687.73724160000006}]

{"sheet":"App.2-FC Calc of REG Expans (2","index":34,"n_rows":94,"n_cols":18,"rows_kept":94,"cut":false,"hidden":true,"merged":[[51,16,51,17],[16,6,16,8],[16,9,16,11],[16,12,16,14],[16,15,16,17],[46,0,46,11],[48,0,48,12],[16,3,16,5],[49,0,49,1],[51,4,51,5],[51,7,51,8],[51,10,51,11],[51,13,51,14],[8,0,8,5],[9,0,9,5],[11,0,11,5],[12,0,12,5],[13,0,13,5]]}
[null,null,null,null,"File Number:",{"$f":"EBNUMBER","v":"EB-2015-0083"}]
[null,null,null,null,"Exhibit:"]
[null,null,null,null,"Tab:"]
[null,null,null,null,"Schedule:"]
[null,null,null,null,"Page:"]
[]
[null,null,null,null,"Date:"]
[]
["Appendix 2-FC"]
["Calculation of Renewable Generation Connection Direct Benefits/Provincial Amount: Renewable Expansion Investments"]
[]
["This table will calculate the distributor/provincial shares of the investments entered in Part B of Appendix 2-FA."]
["Enter values in green shaded cells: WCA percentage, debt percentages, interest rates, kWh, tax rates, amortization period, CCA Class and percentage."]
["Rate Riders are not calculated for Test Year as these assets and costs are already in the distributors rate base."]
[]
[]
[null,null,null,"2014 Test Year",null,null,2015,null,null,2016,2016,null,2017,null,null,2018]
[null,null,null,null,"Direct Benefit","Provincial",null,"Direct Benefit","Provincial",null,"Direct Benefit","Provincial",null,"Direct Benefit","Provincial",null,"Direct Benefit","Provincial"]
[null,null,null,"Total",0.17,0.83,"Total",0.17,0.83,"Total",0.17,0.83,"Total",0.17,0.83,"Total",0.17,0.83]
["Net Fixed Assets (average)",null,null,{"$f":"D81","v":0},{"$f":"D20*E19","v":0},{"$f":"D20*F19","v":0},{"$f":"E81","v":0},{"$f":"G20*H19","v":0},{"$f":"G20*I19","v":0},{"$f":"F81","v":0},{"$f":"J20*K19","v":0},{"$f":"J20*L19","v":0},{"$f":"G81","v":0},{"$f":"M20*N19","v":0},{"$f":"M20*O19","v":0},{"$f":"H81","v":0},{"$f":"P20*Q19","v":0},{"$f":"P20*R19","v":0}]
["Incremental OM&A (on-going, N/A for Provincial Recovery)",null,null,{"$f":"'App.2-FA Proposed REG Inves (2'!C$92","v":0},{"$f":"D21","v":0},null,{"$f":"'App.2-FA Proposed REG Inves (2'!D$92","v":0},{"$f":"G21","v":0},null,{"$f":"'App.2-FA Proposed REG Inves (2'!E$92","v":0},{"$f":"J21","v":0},null,{"$f":"'App.2-FA Proposed REG Inves (2'!F$92","v":0},{"$f":"M21","v":0},null,{"$f":"'App.2-FA Proposed REG Inves (2'!G$92","v":0},{"$f":"P21","v":0}]
["Incremental OM&A (start-up, applicable for Provincial Recovery)",null,null,{"$f":"'App.2-FA Proposed REG Inves (2'!C$91","v":0},{"$f":"D22*E19","v":0},{"$f":"D22*F19","v":0},{"$f":"'App.2-FA Proposed REG Inves (2'!D$91","v":0},{"$f":"G22*H19","v":0},{"$f":"G22*I19","v":0},{"$f":"'App.2-FA Proposed REG Inves (2'!E$91","v":0},{"$f":"J22*K19","v":0},{"$f":"J22*L19","v":0},{"$f":"'App.2-FA Proposed REG Inves (2'!F$91","v":0},{"$f":"M22*N19","v":0},{"$f":"M22*O19","v":0},{"$f":"'App.2-FA Proposed REG Inves (2'!G$91","v":0},{"$f":"P22*Q19","v":0},{"$f":"P22*R19","v":0}]
["WCA",null,null,null,{"$f":"(E21+E22)*$B$23","v":0},{"$f":"F22*$B$23","v":0},null,{"$f":"(H21+H22)*$B$23","v":0},{"$f":"I22*$B$23","v":0},null,{"$f":"(K21+K22)*$B$23","v":0},{"$f":"L22*$B$23","v":0},null,{"$f":"(N21+N22)*$B$23","v":0},{"$f":"O22*$B$23","v":0},null,{"$f":"(Q21+Q22)*$B$23","v":0},{"$f":"R22*$B$23","v":0}]
["Rate Base",null,null,null,{"$f":"SUM(E20+E23)","v":0},{"$f":"SUM(F20+F23)","v":0},null,{"$f":"SUM(H20+H23)","v":0},{"$f":"SUM(I20+I23)","v":0},null,{"$f":"SUM(K20+K23)","v":0},{"$f":"SUM(L20+L23)","v":0},null,{"$f":"SUM(N20+N23)","v":0},{"$f":"SUM(O20+O23)","v":0},null,{"$f":"SUM(Q20+Q23)","v":0},{"$f":"SUM(R20+R23)","v":0}]
[]
[]
["Deemed ST Debt",null,null,null,{"$f":"E24*$B$27","v":0},{"$f":"F24*$B$27","v":0},null,{"$f":"H24*$B$27","v":0},{"$f":"I24*$B$27","v":0},null,{"$f":"K24*$B$27","v":0},{"$f":"L24*$B$27","v":0},null,{"$f":"N24*$B$27","v":0},{"$f":"O24*$B$27","v":0},null,{"$f":"Q24*$B$27","v":0},{"$f":"R24*$B$27","v":0}]
["Deemed LT Debt",null,null,null,{"$f":"E24*$B$28","v":0},{"$f":"F24*$B$28","v":0},null,{"$f":"H24*$B$28","v":0},{"$f":"I24*$B$28","v":0},null,{"$f":"K24*$B$28","v":0},{"$f":"L24*$B$28","v":0},null,{"$f":"N24*$B$28","v":0},{"$f":"O24*$B$28","v":0},null,{"$f":"Q24*$B$28","v":0},{"$f":"R24*$B$28","v":0}]
["Deemed Equity",null,null,null,{"$f":"E24*$B$29","v":0},{"$f":"F24*$B$29","v":0},null,{"$f":"H24*$B$29","v":0},{"$f":"I24*$B$29","v":0},null,{"$f":"K24*$B$29","v":0},{"$f":"L24*$B$29","v":0},null,{"$f":"N24*$B$29","v":0},{"$f":"O24*$B$29","v":0},null,{"$f":"Q24*$B$29","v":0},{"$f":"R24*$B$29","v":0}]
[]
["ST Interest",null,null,null,{"$f":"E27*$B$31","v":0},{"$f":"F27*$B$31","v":0},null,{"$f":"H27*$B$31","v":0},{"$f":"I27*$B$31","v":0},null,{"$f":"K27*$B$31","v":0},{"$f":"L27*$B$31","v":0},null,{"$f":"N27*$B$31","v":0},{"$f":"O27*$B$31","v":0},null,{"$f":"Q27*$B$31","v":0},{"$f":"R27*$B$31","v":0}]
["LT Interest",null,null,null,{"$f":"E28*$B$32","v":0},{"$f":"F28*$B$32","v":0},null,{"$f":"H28*$B$32","v":0},{"$f":"I28*$B$32","v":0},null,{"$f":"K28*$B$32","v":0},{"$f":"L28*$B$32","v":0},null,{"$f":"N28*$B$32","v":0},{"$f":"O28*$B$32","v":0},null,{"$f":"Q28*$B$32","v":0},{"$f":"R28*$B$32","v":0}]
["ROE",null,null,null,{"$f":"E29*$B$33","v":0},{"$f":"F29*$B$33","v":0},null,{"$f":"H29*$B$33","v":0},{"$f":"I29*$B$33","v":0},null,{"$f":"K29*$B$33","v":0},{"$f":"L29*$B$33","v":0},null,{"$f":"N29*$B$33","v":0},{"$f":"O29*$B$33","v":0},null,{"$f":"Q29*$B$33","v":0},{"$f":"R29*$B$33","v":0}]
["Cost of Capital Total",null,null,null,{"$f":"SUM(E31:E33)","v":0},{"$f":"SUM(F31:F33)","v":0},null,{"$f":"SUM(H31:H33)","v":0},{"$f":"SUM(I31:I33)","v":0},null,{"$f":"SUM(K31:K33)","v":0},{"$f":"SUM(L31:L33)","v":0},null,{"$f":"SUM(N31:N33)","v":0},{"$f":"SUM(O31:O33)","v":0},null,{"$f":"SUM(Q31:Q33)","v":0},{"$f":"SUM(R31:R33)","v":0}]
[]
["OM&A",null,null,null,{"$f":"E21+E22","v":0},{"$f":"F22","v":0},null,{"$f":"H21+H22","v":0},{"$f":"I22","v":0},null,{"$f":"K21+K22","v":0},{"$f":"L22","v":0},null,{"$f":"N21+N22","v":0},{"$f":"O22","v":0},null,{"$f":"Q21+Q22","v":0},{"$f":"R22","v":0}]
["Amortization",null,null,{"$f":"D77","v":0},{"$f":"D37*E$19","v":0},{"$f":"D37*F$19","v":0},{"$f":"E75+E76","v":0},{"$f":"G37*H$19","v":0},{"$f":"G37*I$19","v":0},{"$f":"F75+F76","v":0},{"$f":"J37*K$19","v":0},{"$f":"J37*L$19","v":0},{"$f":"G75+G76","v":0},{"$f":"M37*N$19","v":0},{"$f":"M37*O$19","v":0},{"$f":"H75+H76","v":0},{"$f":"P37*Q$19","v":0},{"$f":"P37*R$19","v":0}]
["Grossed-up PILs",null,null,null,{"$f":"E65","v":0},{"$f":"F65","v":0},null,{"$f":"H65","v":0},{"$f":"I65","v":0},null,{"$f":"K65","v":0},{"$f":"L65","v":0},null,{"$f":"N65","v":0},{"$f":"O65","v":0},null,{"$f":"Q65","v":0},{"$f":"R65","v":0}]
[]
["Revenue Requirement",null,null,null,{"$f":"SUM(E34:E38)","v":0},{"$f":"SUM(F34:F38)","v":0},null,{"$f":"SUM(H34:H38)","v":0},{"$f":"SUM(I34:I38)","v":0},null,{"$f":"SUM(K34:K38)","v":0},{"$f":"SUM(L34:L38)","v":0},null,{"$f":"SUM(N34:N38)","v":0},{"$f":"SUM(O34:O38)","v":0},null,{"$f":"SUM(Q34:Q38)","v":0},{"$f":"SUM(R34:R38)","v":0}]
[]
[]
["Provincial Rate Protection",null,null,null,null,{"$f":"F40","v":0},null,null,{"$f":"I40","v":0},null,null,{"$f":"L40","v":0},null,null,{"$f":"O40","v":0},null,null,{"$f":"R40","v":0}]
[]
["Monthly Amount Paid by IESO",null,null,null,null,{"$f":"F43/12","v":0},null,null,{"$f":"I43/12","v":0},null,null,{"$f":"L43/12","v":0},null,null,{"$f":"O43/12","v":0},null,null,{"$f":"R43/12","v":0}]
[]
["Note 1: The difference between the actual costs of approved eligible investments and revenue received from the IESO should be recorded in a variance account.  The Board may provide "]
["regulatory accounting guidance regarding a variance account either in an individual proceeding or on a generic basis."]
["Note 2: For the 2014 Test Year, Costs and Revenues of the Direct Benefit are to be included in the test year applicant Rate Base and Revenues."]
[]
["PILs Calculation"]
[null,null,null,null,2014,null,null,2015,null,null,2016,null,null,2017,null,null,2018]
["Income Tax",null,null,null,"Direct Benefit","Provincial",null,"Direct Benefit","Provincial",null,"Direct Benefit","Provincial",null,"Direct Benefit","Provincial",null,"Direct Benefit","Provincial"]
[null,null,null,null,null,null,null,null,null,null,null,null,"Total",null,null,"Total"]
["Net Income - ROE on Rate Base",null,null,null,{"$f":"E33","v":0},{"$f":"F33","v":0},null,{"$f":"H33","v":0},{"$f":"I33","v":0},null,{"$f":"K33","v":0},{"$f":"L33","v":0},null,{"$f":"N33","v":0},{"$f":"O33","v":0},null,{"$f":"Q33","v":0},{"$f":"R33","v":0}]
["Amortization (17% DB and 83% P)",null,null,null,{"$f":"E37","v":0},{"$f":"F37","v":0},null,{"$f":"H37","v":0},{"$f":"I37","v":0},null,{"$f":"K37","v":0},{"$f":"L37","v":0},null,{"$f":"N37","v":0},{"$f":"O37","v":0},null,{"$f":"Q37","v":0},{"$f":"R37","v":0}]
["CCA (17% DB and 83% P)",null,null,null,{"$f":"-D93*E$19","v":0},{"$f":"-D93*F$19","v":0},null,{"$f":"-E93*H$19","v":0},{"$f":"-E93*I$19","v":0},null,{"$f":"-F93*K$19","v":0},{"$f":"-F93*L$19","v":0},null,{"$f":"-G93*N$19","v":0},{"$f":"-G93*O$19","v":0},null,{"$f":"-H93*Q$19","v":0},{"$f":"-H93*R$19","v":0}]
["Taxable income",null,null,null,{"$f":"SUM(E55:E57)","v":0},{"$f":"SUM(F55:F57)","v":0},null,{"$f":"SUM(H55:H57)","v":0},{"$f":"SUM(I55:I57)","v":0},null,{"$f":"SUM(K55:K57)","v":0},{"$f":"SUM(L55:L57)","v":0},null,{"$f":"SUM(N55:N57)","v":0},{"$f":"SUM(O55:O57)","v":0},null,{"$f":"SUM(Q55:Q57)","v":0},{"$f":"SUM(R55:R57)","v":0}]
[]
["Tax Rate  (to be entered)"]
[]
["Income Taxes Payable",null,null,null,{"$f":"E58*E60","v":0},{"$f":"F58*F60","v":0},null,{"$f":"H58*H60","v":0},{"$f":"I58*I60","v":0},null,{"$f":"K58*K60","v":0},{"$f":"L58*L60","v":0},null,{"$f":"N58*N60","v":0},{"$f":"O58*O60","v":0},null,{"$f":"Q58*Q60","v":0},{"$f":"R58*R60","v":0}]
["Gross Up"]
["Income Taxes Payable",null,null,null,{"$f":"E62/(1-E60)","v":0},{"$f":"F62/(1-F60)","v":0},null,{"$f":"H62/(1-H60)","v":0},{"$f":"I62/(1-I60)","v":0},null,{"$f":"K62/(1-K60)","v":0},{"$f":"L62/(1-L60)","v":0},null,{"$f":"N62/(1-N60)","v":0},{"$f":"O62/(1-O60)","v":0},null,{"$f":"Q62/(1-Q60)","v":0},{"$f":"R62/(1-R60)","v":0}]
["Grossed Up PILs",null,null,null,{"$f":"SUM(E64:E64)","v":0},{"$f":"SUM(F64:F64)","v":0},null,{"$f":"SUM(H64:H64)","v":0},{"$f":"SUM(I64:I64)","v":0},null,{"$f":"SUM(K64:K64)","v":0},{"$f":"SUM(L64:L64)","v":0},null,{"$f":"SUM(N64:N64)","v":0},{"$f":"SUM(O64:O64)","v":0},null,{"$f":"SUM(Q64:Q64)","v":0},{"$f":"SUM(R64:R64)","v":0}]
[]
[]
["Net Fixed Assets",null,null,2014,2015,2016,2017,2018]
[null,"Enter applicable amortization in years:",25]
["Opening Gross Fixed Assets",null,null,null,{"$f":"D72","v":0},{"$f":"E72","v":0},{"$f":"F72","v":0},{"$f":"G72","v":0}]
["Gross Capital Additions",null,null,{"$f":"'App.2-FA Proposed REG Inves (2'!C90","v":0},{"$f":"'App.2-FA Proposed REG Inves (2'!D90","v":0},{"$f":"'App.2-FA Proposed REG Inves (2'!E90","v":0},{"$f":"'App.2-FA Proposed REG Inves (2'!F90","v":0},{"$f":"'App.2-FA Proposed REG Inves (2'!G90","v":0}]
["Closing Gross Fixed Assets",null,null,{"$f":"SUM(D70:D71)","v":0},{"$f":"SUM(E70:E71)","v":0},{"$f":"SUM(F70:F71)","v":0},{"$f":"SUM(G70:G71)","v":0},{"$f":"SUM(H70:H71)","v":0}]
[]
["Opening Accumulated Amortization",null,null,null,{"$f":"D77","v":0},{"$f":"E77","v":0},{"$f":"F77","v":0},{"$f":"G77","v":0}]
["Current Year Amortization (before additions)",null,null,null,{"$f":"E70/$C$69","v":0},{"$f":"F70/$C$69","v":0},{"$f":"G70/$C$69","v":0},{"$f":"H70/$C$69","v":0}]
["Additions (half year)",null,null,{"$f":"D71/C69/2","v":0},{"$f":"E71/C69/2","v":0},{"$f":"F71/C69/2","v":0},{"$f":"G71/C69/2","v":0},{"$f":"H71/C69/2","v":0}]
["Closing Accumulated Amortization",null,null,{"$f":"SUM(D74+D76)","v":0},{"$f":"SUM(E74:E76)","v":0},{"$f":"SUM(F74:F76)","v":0},{"$f":"SUM(G74:G76)","v":0},{"$f":"SUM(H74:H76)","v":0}]
[]
["Opening Net Fixed Assets",null,null,{"$f":"D70-D74","v":0},{"$f":"D80","v":0},{"$f":"E80","v":0},{"$f":"F80","v":0},{"$f":"G80","v":0}]
["Closing Net Fixed Assets",null,null,{"$f":"D72-D77","v":0},{"$f":"E72-E77","v":0},{"$f":"F72-F77","v":0},{"$f":"G72-G77","v":0},{"$f":"H72-H77","v":0}]
["Average Net Fixed Assets",null,null,{"$f":"SUM(D79:D80)/2","v":0},{"$f":"SUM(E79:E80)/2","v":0},{"$f":"SUM(F79:F80)/2","v":0},{"$f":"SUM(G79:G80)/2","v":0},{"$f":"SUM(H79:H80)/2","v":0}]
[]
["UCC for PILs Calculation"]
[null,null,null,2014,2015,2016,2017,2018]
[]
["Opening UCC",null,null,null,{"$f":"D94","v":0},{"$f":"E94","v":0},{"$f":"F94","v":0},{"$f":"G94","v":0}]
["Capital Additions (from Appendix 2-FA)",null,null,{"$f":"D71","v":0},{"$f":"E71","v":0},{"$f":"F71","v":0},{"$f":"G71","v":0},{"$f":"H71","v":0}]
["UCC Before Half Year Rule",null,null,{"$f":"SUM(D86:D87)","v":0},{"$f":"SUM(E86:E87)","v":0},{"$f":"SUM(F86:F87)","v":0},{"$f":"SUM(G86:G87)","v":0},{"$f":"SUM(H86:H87)","v":0}]
["Half Year Rule (1/2 Additions - Disposals)",null,null,{"$f":"D87/2","v":0},{"$f":"E87/2","v":0},{"$f":"F87/2","v":0},{"$f":"G87/2","v":0},{"$f":"H87/2","v":0}]
["Reduced UCC",null,null,{"$f":"D88-D89","v":0},{"$f":"E88-E89","v":0},{"$f":"F88-F89","v":0},{"$f":"G88-G89","v":0},{"$f":"H88-H89","v":0}]
["CCA Rate Class (to be entered)",null,47,{"$f":"C91","v":47},{"$f":"C91","v":47},{"$f":"C91","v":47},{"$f":"C91","v":47},{"$f":"C91","v":47}]
["CCA Rate  (to be entered)",null,0.08,{"$f":"C92","v":0.08},{"$f":"C92","v":0.08},{"$f":"C92","v":0.08},{"$f":"C92","v":0.08},{"$f":"C92","v":0.08}]
["CCA",null,null,{"$f":"D90*D$92","v":0},{"$f":"E90*E$92","v":0},0,0,0]
["Closing UCC",null,null,{"$f":"D88-D93","v":0},{"$f":"E88-E93","v":0},{"$f":"F88-F93","v":0},{"$f":"G88-G93","v":0},{"$f":"H88-H93","v":0}]

{"sheet":"App.2-I LF_CDM_WF_OLD","index":35,"n_rows":77,"n_cols":12,"rows_kept":77,"cut":false,"hidden":true,"merged":[[69,1,69,5],[76,0,76,5],[13,0,13,5],[38,0,38,5],[43,0,43,1],[47,0,47,1],[19,0,19,5],[20,0,20,5],[27,0,27,5],[62,0,62,5],[64,0,64,5],[66,0,66,5],[35,0,35,5],[52,0,52,5],[49,0,49,5],[50,0,50,5],[9,0,9,5],[8,0,8,5],[15,0,15,5],[17,0,17,5],[58,0,58,5],[36,0,36,5],[40,0,40,4]]}
[null,null,null,null,"File Number:",{"$f":"EBNUMBER","v":"EB-2015-0083"},null,{"$f":"'LDC Info'!$E$16","v":"EB-2015-0083"}]
[null,null,null,null,"Exhibit:"]
[null,null,null,null,"Tab:"]
[null,null,null,null,"Schedule:"]
[null,null,null,null,"Page:"]
[]
[null,null,null,null,"Date:"]
[]
["Appendix 2-I"]
["Load Forecast CDM Adjustment Work Form (2015)"]
[]
["Input the 2011-2014 CDM target in Cell B21."]
[]
["Input the measured results for 2011 CDM programs for each of the years 2011 and persistence into 2012, 2013 and 2014 into cells B29 to E29.  These results are taken from the final 2011 CDM Report issued by the OPA for that distributor in the fall of 2012."]
[]
["Measured results for 2012 CDM programs for each of the years 2012 and persistence into 2013 and 2014 are input into cells C30 to E30.  These results are taken from the final 2012 CDM Report issued by the OPA for that distributor in the fall of 2013.  Until that report is issued, the distributor should use the results from the preliminary 2012 CDM Report issued in the spring of 2013."]
[]
["\tBased on these inputs, the residual kWh to achieve the 4 year CDM target is allocated so that there is an equal incremental increase in each of the years 2012, 2013 and 2014.\r\n"]
[]
["4 Year (2011-2014) kWh Target:"]
[100000]
[null,2011,2012,2013,2014,"Total",null,null,{"$f":"B22","v":2011},{"$f":"C22","v":2012},{"$f":"D22","v":2013},{"$f":"E22","v":2014}]
["2011 CDM Programs",{"$f":"B29/$F$33","v":0.1},{"$f":"C29/$F$33","v":0.1},0.1,9.5000000000000001E-2,{"$f":"SUM(B23:E23)","v":0.39500000000000002},null,{"$f":"A23","v":"2011 CDM Programs"},{"$f":"50%","v":0.5},1,1,1]
["2012 CDM Programs",null,0.12,0.1195,0.11,{"$f":"SUM(B24:E24)","v":0.34949999999999998},null,{"$f":"A24","v":"2012 CDM Programs"},null,0.5,1,1]
["2013 CDM Programs",null,null,8.5166666666666654E-2,8.5166666666666654E-2,0.17033333333333331,null,{"$f":"A25","v":"2013 CDM Programs"},null,null,0.5,1]
["2014 CDM Programs",null,null,null,8.5166666666666654E-2,8.5166666666666654E-2,null,{"$f":"A26","v":"2014 CDM Programs"},null,null,null,0.5]
["Total in Year",{"$f":"SUM(B23:B26)","v":0.1},{"$f":"SUM(C23:C26)","v":0.22},0.30466666666666664,0.37533333333333335,{"$f":"SUM(B27:E27)","v":1}]
["kWh"]
["2011 CDM Programs",10000,10000,10000,9500,{"$f":"SUM(B29:E29)","v":39500}]
["2012 CDM Programs",null,12000,11950,11000,{"$f":"SUM(B30:E30)","v":34950}]
["2013 CDM Programs",null,null,{"$f":"(A21-SUM(F29:F30))/3","v":8516.6666666666661},{"$f":"D31","v":8516.6666666666661},17033.333333333332]
["2014 CDM Programs",null,null,null,{"$f":"D31","v":8516.6666666666661},8516.6666666666661]
["Total in Year",{"$f":"SUM(B29:B32)","v":10000},{"$f":"SUM(C29:C32)","v":22000},30466.666666666664,37533.333333333328,{"$f":"A21","v":100000}]
[]
[null,null,null,null,"Check",{"$f":"SUM(F29:F32)","v":100000}]
["From each of the 2006-2010 CDM Final Report, 2011 CDM Final Report, and the 2012 CDM Final Report, issued by the OPA for the distributor, the distributor should input the \"gross\" and \"net\" results of the cumulative CDM savings for 2014 into cells D31 to E33.  The model will calculate the cumulative savings for all programs from 2006 to 2012 and determine the \"net\" to \"gross\" factor \"g\"."]
["The Board has determined that the \"net\" number should be used in its Decision and Order with respect to Centre Wellington Hydro Ltd.'s 2013 Cost of Service rates (EB-2012-0113).  This approach has also been used in Settlement Agreements accepted by the Board in other 2013 applications.  The distributor should select whether the adjustment is done on a \"net\" or \"gross\" basis, but must support a proposal for the adjustment being done on a \"gross\" basis."]
[]
["Net-to-Gross Conversion"]
[]
["Is CDM adjustment being done on a \"net\" or \"gross\" basis?",null,null,null,null,"net"]
[]
[null,null,"\"Gross\"","\"Net\"","Difference","\"Net-to-Gross\" Conversion Factor"]
["Persistence of Historical CDM programs to 2014",null,"kWh","kWh","kWh","('g')"]
["2006-2010 CDM programs"]
["2011 CDM program"]
["2012 CDM program"]
["2006 to 2011 OPA CDM programs:  Persistence to 2014",null,{"$f":"SUM(C45:C47)","v":0},{"$f":"SUM(D45:D47)","v":0},{"$f":"C48-D48","v":0},{"$f":"IF(D48=0,0,IF(F41=\"net\",0,E48/D48))","v":0}]
[]
["The default values represent the factor that each year's CDM program is factored into the manual CDM adjustment.  Distributors can choose alternative weights of \"0\", \"0.5\" or \"1\" from the drop-down menu for each cell, but must support its alternatives."]
["These factors do not mean that CDM programs are excluded, but also reflect the assumption that impacts of 2011 and 2012 programs are already implicitly reflected in the actual data for those years that are the basis for the load forecast prior to any manual CDM adjustment."]
[]
["Weight Factor for Inclusion in CDM Adjustment to 2014 Load Forecast"]
[null,2011,2012,2013,2014]
["Weight Factor for each year's CDM program impact on 2014 load forecast",0,0,1,0.5,"Utility can select \"0\", \"0.5\", or \"1\" from drop-down list"]
["Default Value selection rationale.  ","Persistence of 2011 CDM programs for the full year of 2012 means that all of 2011 CDM impact is assumed to be in the base forecast before the CDM Adjustment","50% of 2012 CDM impact is assumed reflected in base forecast based on 1/2 year rule.","Full year impact of 2013 CDM programs on adjustment for 2014 load forecast","Only 50% of 2014 CDM impact is used based on a half year rule"]
[]
[]
["The Amount used for the CDM threshold of the LRAMVA is the kWh that will be used to determine the base amount for the LRAMVA balance for 2014, for assessing performance against the four-year target.  The base amount for 2011-2013 is 0 (zero) for 2014 Cost of Service applications, as the utility rebased prior to the 2011-2014 CDM programs, and there was no adjustment to reflect the impacts of the 2011-2014 programs on the load forecast used to determine their last cost of service-based rates."]
[]
["The proposed loss factor should correspond with the loss factor calculated in Appendix 2-R "]
[]
["The Manual Adjustment for the 2014 Load Forecast is the amount manually subtracted from the load forecast derived from the base forecast from historical data, and is intended to reflect the further CDM savings that the distributor needs to achieve assuming that they meet 100% of the 2011-2014 CDM target that is a condition of their target. "]
[]
["If the distributor has developed their load forecast on a system purchased basis, then the manual adjustment should be on system purchased basis, including the adjustment for losses.  If the load forecast has been developed on a billed basis, either on a system basis or on a class-specific basis, the manual adjustment should be on a billed basis, excluding losses."]
[]
["The distributor should determine the allocation of the savings to all customer classes in a reasonable manner, for both the LRAMVA and for the load forecast adjustment."]
[]
[null,2011,2012,2013,2014,"Total for 2014"]
[null,"kWh"]
["Amount used for CDM threshold for LRAMVA (2014)",{"$f":"E29","v":9500},{"$f":"E30","v":11000},{"$f":"E31","v":8516.6666666666661},{"$f":"E32","v":8516.6666666666661},{"$f":"SUM(B71:E71)","v":37533.333333333328}]
[]
["Manual Adjustment for 2014 Load Forecast (billed basis)",{"$f":"B71*(1+F48)*B55","v":0},{"$f":"C71*(1+F48)*C55","v":0},{"$f":"D71*(1+F48)*D55","v":8516.6666666666661},{"$f":"E71*(1+F48)*E55","v":4258.333333333333},{"$f":"SUM(B73:E73)","v":12775}]
[]
["Proposed Loss Factor (TLF)",4.7899999999999998E-2," Format: X.XX%"]
["Manual Adjustment for 2014 Load Forecast (system purchased basis)",{"$f":"B73*(1+$B75)","v":0},{"$f":"C73*(1+$B75)","v":0},8924.6149999999998,4462.3074999999999,{"$f":"SUM(B76:E76)","v":13386.922500000001}]
["Manual adjustment uses \"gross\" versus \"net\" (i.e. numbers multiplied by (1 + g).  The Weight factor is also used calculate the impact of each year's program on the CDM adjustment to the 2014 load forecast."]

{"sheet":"lists","index":36,"n_rows":212,"n_cols":55,"rows_kept":212,"cut":false,"hidden":true,"merged":[[13,51,13,52],[14,51,14,52],[15,51,15,52],[16,51,16,52],[17,51,17,52],[12,51,12,52],[11,51,11,52],[0,51,0,52],[1,51,1,52],[2,51,2,52],[3,51,3,52],[4,51,4,52],[5,51,5,52],[6,51,6,52],[7,51,7,52],[8,51,8,52],[9,51,9,52],[10,51,10,52]]}
["DISTRIBUTED GENERATION [DGEN]","Embedded Distributor",{"$f":"COUNTA(B1:B17)","v":4},null,null,null,null,null,"A Standby Service Charge will be applied for a month where standby power is not provided. The applicable rate is the approved Distribution Volumetric Rate of the applicable service class and is applied to gross metered demand or contracted amount, whichever is greater. A monthly administration charge of $200, for simple metering arrangements, or $500, for complex metering arrangements, will also be applied.",null,null,"Loss Factors",null,"Units","Units1","Units2",null,null,null,null,null,null,null,null,null,"Account History","Account set up charge/change of occupancy charge (plus credit agency costs if applicable)","Total Loss Factor – Embedded Distributor – Hydro One Networks Inc.",null,null,null,null,null,null,null,null,null,"Algoma Power Inc.","Algoma Power Inc.",null,"DISTRIBUTED GENERATION [DGEN]","kW",null,null,null,"Sub-Total:  Delivery (Distribution and Retail Transmission)"]
["EMBEDDED DISTRIBUTOR","General Service 3,000 to 4,999 kW",null,null,null,null,null,null,"Distribution Volumetric Rate",null,null,"Total Loss Factor – Primary Metered Customer",null,"$","$/kWh","$",null,null,null,null,null,null,null,null,null,"Account set up charge/change of occupancy charge","Administrative Billing Charge","Total Loss Factor – Primary Metered Customer",null,null,null,null,null,null,null,null,null,"Atikokan Hydro Inc.","Atikokan Hydro Inc.",null,"EMBEDDED DISTRIBUTOR","kW",null,null,null,"Wholesale Market Service Rate ",null,null,{"$f":"AU2*AV2","v":0},{"$f":"AU2","v":0},0,{"$f":"AX2*AY2","v":0},null,{"$f":"AZ2-AW2","v":0},{"$f":"BB2/AW2","v":{"$error":"#DIV/0!"}}]
["EMBEDDED DISTRIBUTOR","General Service 1,000 to 4,999 kW",null,null,null,null,null,null,"Distribution Volumetric Rate - $/kW of contracted amount",null,null,"Total Loss Factor – Primary Metered Customer < 5,000 kW",null,"$/kWh","$/kW","%",null,null,null,null,null,null,"MSC",null,null,"Account set up charge/change of occupancy charge (plus credit agency costs if applicable – Residential)","Bell Canada Pole Rentals","Total Loss Factor – Primary Metered Customer < 5,000 kW",null,null,null,null,null,null,null,null,null,"Attawapiskat Power Corp. ","Attawapiskat Power Corp. ",null,"EMBEDDED DISTRIBUTOR","kW",null,null,null,"Rural Rate Protection Charge",null,null,{"$f":"AU3*AV3","v":0},0,0,{"$f":"AX3*AY3","v":0},null,{"$f":"AZ3-AW3","v":0},{"$f":"BB3/AW3","v":{"$error":"#DIV/0!"}}]
["FARMS - SINGLE PHASE ENERGY-BILLED [F1]","General Service Equal To Or Greater Than 1,500 kW - Interval Metered",null,null,null,null,null,null,"Distribution Wheeling Service Rate",null,null,"Total Loss Factor – Primary Metered Customer > 5,000 kW",null,"$/kW","$/kVA",null,null,null,null,null,null,null,"SM_Rate_Adder",null,null,"Account set up charge/change of occupancy charge (plus credit agency costs if applicable)","Clearance Pole Attachment charge $/pole/year","Total Loss Factor – Primary Metered Customer > 5,000 kW",null,null,null,null,null,null,null,null,null,"Bluewater Power Distribution Corporation","Bluewater Power Distribution Corporation",null,"FARMS - SINGLE PHASE ENERGY-BILLED [F1]","kWh",null,null,null,"Standard Supply Service – Administration Charge (if applicable)",null,null,{"$f":"AU4*AV4","v":0},0,0,{"$f":"AX4*AY4","v":0},null,{"$f":"AZ4-AW4","v":0},{"$f":"BB4/AW4","v":{"$error":"#DIV/0!"}}]
["FARMS - THREE PHASE ENERGY-BILLED [F3]",null,null,null,null,null,null,null,"Electricity Rate",null,null,"Total Loss Factor – Secondary Metered Customer",null,"$/kVA",null,null,null,null,null,null,null,null,"MSC_Rate_Rider_",null,null,"Arrears certificate","Collection of account charge – no disconnection","Total Loss Factor – Secondary Metered Customer",null,null,null,null,null,null,null,null,null,"Brant County Power Inc.","Brant County Power Inc.",null,"FARMS - THREE PHASE ENERGY-BILLED [F3]","kWh",null,null,null,"Sub-Total:  Regulatory",null,null,{"$f":"SUM(AW2:AW4)","v":0},null,null,{"$f":"SUM(AZ2:BA4)","v":0},null,{"$f":"AZ5-AW5","v":0},{"$f":"BB5/AW5","v":{"$error":"#DIV/0!"}}]
["GENERAL SERVICE - COMMERCIAL",null,null,null,null,null,null,null,"Electricity Rate - All Additional kWh",null,null,"Total Loss Factor – Secondary Metered Customer < 5,000 kW",null,null,null,null,null,null,null,null,null,null,"VC",null,null,"Arrears certificate (credit reference)","Collection of account charge – no disconnection – after regular hours","Total Loss Factor – Secondary Metered Customer < 5,000 kW",null,null,null,null,null,null,null,null,null,"Brantford Power Inc.","Brantford Power Inc.",null,"GENERAL SERVICE - COMMERCIAL","kW",null,null,null,"Debt Retirement Charge (DRC)",null,null,{"$f":"AU6*AV6","v":0},{"$f":"AU6","v":0},{"$f":"AV6","v":0},{"$f":"AX6*AY6","v":0},null,{"$f":"AZ6-AW6","v":0},{"$f":"BB6/AW6","v":{"$error":"#DIV/0!"}}]
["GENERAL SERVICE - INSTITUTIONAL",null,null,null,null,null,null,null,"Electricity Rate - First 250 kWh",null,null,null,null,null,null,null,null,null,null,null,null,null,null,null,null,null,null,null,null,null,null,null,null,null,null,null,null,"Burlington Hydro Inc.","Burlington Hydro Inc.",null,"GENERAL SERVICE - INSTITUTIONAL","kW"]
["GENERAL SERVICE 1,000 TO 2,999 KW",null,null,null,null,null,null,null,"Electricity Rate -All Additional kWh",null,null,"Total Loss Factor – Secondary Metered Customer > 5,000 kW",null,null,null,null,null,null,null,null,null,null,"VC_Rate_Rider_",null,null,"Charge to certify cheque","Collection of account charge – no disconnection - during regular business hours","Total Loss Factor – Secondary Metered Customer > 5,000 kW",null,null,null,null,null,null,null,null,null,"Cambridge and North Dumfries Hydro Inc.","Cambridge and North Dumfries Hydro Inc.",null,"GENERAL SERVICE 1,000 TO 2,999 KW","kW",null,null,null,"Total Bill on RPP (before taxes)",null,null,null,null,null,null,null,{"$f":"AZ8-AW8","v":0}]
["GENERAL SERVICE 1,000 TO 4,999 KW",null,null,null,null,null,null,null,"Electricity Rate First 1,000 kWh",null,null,"Distribution Loss Factor - Secondary Metered Customer < 5,000 kW",null,null,null,null,null,null,null,null,null,null,"VC_GA_Rate_Rider_kW_",null,null,"Collection of Account Charge – No Disconnection","Collection of account charge – no disconnection – during regular hours",null,null,null,null,null,null,null,null,null,null,"Canadian Niagara Power Inc.","Canadian Niagara Power Inc. - Eastern Ontario Power",null,"GENERAL SERVICE 1,000 TO 4,999 KW - INTERVAL METERS","kW",null,null,null,"HST",null,null,{"$f":"AV9*AW8","v":0},null,{"$f":"AV9","v":0},{"$f":"AY9*AZ8","v":0},null,{"$f":"AZ9-AW9","v":0},{"$f":"BB9/AW9","v":{"$error":"#DIV/0!"}}]
["GENERAL SERVICE 1,000 TO 4,999 KW - INTERVAL METERS",null,null,null,null,null,null,null,"Electricity Rate First 25,000 kWh",null,null,"Distribution Loss Factor - Secondary Metered Customer > 5,000 kW",null,null,null,null,null,null,null,null,null,null,"VC_LV_Rate",null,null,"Credit Card Convenience Charge","Collection/Disconnection/Load Limiter/Reconnection – if in Community",null,null,null,null,null,null,null,null,null,null,"Centre Wellington Hydro Ltd.","Canadian Niagara Power Inc. - Fort Erie",null,"GENERAL SERVICE 1,000 TO 4,999 KW (CO-GENERATION)","kW",null,null,null,"Total Bill (including HST)",null,null,{"$f":"AW9+AW8","v":0},null,null,{"$f":"AZ9+AZ8","v":0},null,{"$f":"AZ10-AW10","v":0},{"$f":"BB10/AW10","v":{"$error":"#DIV/0!"}}]
["GENERAL SERVICE 1,000 TO 4,999 KW (CO-GENERATION)",null,null,null,null,null,null,null,"Electricity Rate First 6,000 kWh",null,null,"Distribution Loss Factor - Primary Metered Customer < 5,000 kW",null,null,null,null,null,null,null,null,null,null,"RTSR_Network",null,null,"Credit check (plus credit agency costs)","Credit Card Convenience Charge",null,null,null,null,null,null,null,null,null,null,"Chapleau Public Utilities Corporation","Canadian Niagara Power Inc. - Port Colborne Hydro Inc.",null,"GENERAL SERVICE 1,000 TO 4,999 KW","kW",null,null,null,"Ontario Clean Energy Benefit (OCEB)",null,null,{"$f":"-0.1*AW10","v":0},null,{"$f":"AV11","v":0},{"$f":"-0.1*AZ10","v":0},null,{"$f":"AZ11-AW11","v":0},{"$f":"BB11/AW11","v":{"$error":"#DIV/0!"}}]
["GENERAL SERVICE 1,500 TO 4,999 KW",null,null,null,null,null,null,null,"Electricity Rate Next 1,500 kWh",null,null,"Distribution Loss Factor - Primary Metered Customer > 5,000 kW",null,null,null,null,null,null,null,null,null,null,"RTSR_Connection",null,null,"Credit reference Letter","Disconnect/Reconnect at meter – after regular hours",null,null,null,null,null,null,null,null,null,null,"Clinton Power Corporation","Centre Wellington Hydro Ltd.",null,"GENERAL SERVICE 1,500 TO 4,999 KW","kW",null,null,null,"Total Bill on RPP (including OCEB)",null,null,{"$f":"AW10+AW11","v":0},null,null,{"$f":"AZ10+AZ11","v":0},null,{"$f":"AZ12-AW12","v":0},{"$f":"BB12/AW12","v":{"$error":"#DIV/0!"}}]
["GENERAL SERVICE 2,500 TO 4,999 KW",null,null,null,null,null,null,null,"General Service 1,500 to 4,999 kW customer",null,null,null,null,null,null,null,null,null,null,null,null,null,null,null,null,null,null,null,null,null,null,null,null,null,null,null,null,"COLLUS Power Corporation","Chapleau Public Utilities Corporation",null,"GENERAL SERVICE 2,500 TO 4,999 KW","kW"]
["GENERAL SERVICE 3,000 TO 4,999 KW",null,null,null,null,null,null,null,"General Service 50 to 1,499 kW customer",null,null,"Total Loss Factor - Embedded Distributor",null,null,null,null,null,null,null,null,null,null,"RTSR_Network_Interval",null,null,"Credit reference/credit check (plus credit agency costs – General Service)","Disconnect/Reconnect at meter – during regular hours",null,null,null,null,null,null,null,null,null,null,"Cooperative Hydro Embrun Inc.","Clinton Power Corporation",null,"GENERAL SERVICE 3,000 TO 4,999 KW - INTERMEDIATE USE","kW",null,null,null,"Total Bill on TOU (before taxes)",null,null,null,null,null,null,null,{"$f":"AZ14-AW14","v":0}]
["GENERAL SERVICE 3,000 TO 4,999 KW - INTERMEDIATE USE",null,null,null,null,null,null,null,"General Service Large Use customer",null,null,"Total Loss Factor – Embedded Distributor – Hydro One Networks Inc.",null,null,null,null,null,null,null,null,null,null,"RTSR_Connection_Interval",null,null,"Credit Reference/credit check (plus credit agency costs)","Disconnect/Reconnect at pole – after regular hours",null,null,null,null,null,null,null,null,null,null,"E.L.K. Energy Inc.","COLLUS Power Corporation",null,"GENERAL SERVICE 3,000 TO 4,999 KW - INTERVAL METERED","kW",null,null,null,"HST",null,null,{"$f":"AV15*AW14","v":0},null,{"$f":"AV15","v":0},{"$f":"AY15*AZ14","v":0},null,{"$f":"AZ15-AW15","v":0},{"$f":"BB15/AW15","v":{"$error":"#DIV/0!"}}]
["GENERAL SERVICE 3,000 TO 4,999 KW - INTERVAL METERED",null,null,null,null,null,null,null,"Green Energy Act Initiatives Funding Adder - effective until the date of the next cost of service-based rate order",null,null,null,null,null,null,null,null,null,null,null,null,null,"RTSR_Network_Interval_GR1000kW",null,null,"Dispute Test – Commercial self contained -- MC","Disconnect/Reconnect at pole – during regular hours",null,null,null,null,null,null,null,null,null,null,"Enersource Hydro Mississauga Inc.","Cooperative Hydro Embrun Inc.",null,"GENERAL SERVICE 3,000 TO 4,999 KW - TIME OF USE","kW",null,null,null,"Total Bill (including HST)",null,null,{"$f":"AW15+AW14","v":0},null,null,{"$f":"AZ15+AZ14","v":0},null,{"$f":"AZ16-AW16","v":0},{"$f":"BB16/AW16","v":{"$error":"#DIV/0!"}}]
["GENERAL SERVICE 3,000 TO 4,999 KW - TIME OF USE",null,null,null,null,null,null,null,"Green Energy Act Plan Funding Adder",null,null,null,null,null,null,null,null,null,null,null,null,null,"RTSR_Connection_Interval_GR1000kW",null,null,"Dispute Test – Commercial TT -- MC","Disconnect/Reconnect Charge – At Meter – After Hours",null,null,null,null,null,null,null,null,null,null,"Entegrus Powerlines Inc.","E.L.K. Energy Inc.",null,"GENERAL SERVICE 3,000 TO 4,999 KW","kW",null,null,null,"Ontario Clean Energy Benefit (OCEB)",null,null,{"$f":"-0.1*AW16","v":0},null,{"$f":"AV17","v":0},{"$f":"-0.1*AZ16","v":0},null,{"$f":"AZ17-AW17","v":0},{"$f":"BB17/AW17","v":{"$error":"#DIV/0!"}}]
["GENERAL SERVICE 50 TO 1,000 KW",null,null,null,null,null,null,null,"Green Energy Act Plan Funding Adder - effective April 1, 2013 until March 31, 2014",null,null,null,null,null,null,null,null,null,null,null,null,null,"RTSR_Line_Connection",null,null,"Dispute Test – Residential","Disconnect/Reconnect Charge – At Meter – During Regular Hours",null,null,null,null,null,null,null,null,null,null,"ENWIN Utilities Ltd.","Enersource Hydro Mississauga Inc.",null,"GENERAL SERVICE 50 TO 1,000 KW - INTERVAL METERS","kW",null,null,null,"Total Bill on TOU (including OCEB)",null,null,{"$f":"AW16+AW17","v":0},null,null,{"$f":"AZ16+AZ17","v":0},null,{"$f":"AZ18-AW18","v":0},{"$f":"BB18/AW18","v":{"$error":"#DIV/0!"}}]
["GENERAL SERVICE 50 TO 1,000 KW - INTERVAL METERS",null,null,null,null,null,null,null,"Green Energy Act Plan Funding Adder - effective April 1, 2014 until March 31, 2015",null,null,null,null,null,null,null,null,null,null,null,null,null,"RTSR_Transformer_Connection",null,null,"Duplicate Invoices for previous billing","Disconnect/Reconnect Charge – At Pole – After Hours",null,null,null,null,null,null,null,null,null,null,"Erie Thames Powerlines Corporation","Entegrus Powerlines Inc. - Chatham-Kent",null,"GENERAL SERVICE 50 TO 1,000 KW - NON INTERVAL METERS","kW"]
["GENERAL SERVICE 50 TO 1,000 KW - NON INTERVAL METERS",null,null,null,null,null,null,null,"ICM Rate Rider (2014) - in effect until the effective date of the next cost of service rates",null,null,null,null,null,null,null,null,null,null,null,null,null,"WMSR",null,null,"Easement Letter","Disconnect/Reconnect Charge – At Pole – During Regular Hours",null,null,null,null,null,null,null,null,null,null,"Espanola Regional Hydro Distribution Corporation","Entegrus Powerlines Inc. - Dutton",null,"GENERAL SERVICE 50 TO 1,000 KW","kW"]
["GENERAL SERVICE 50 TO 1,499 KW",null,null,null,null,null,null,null,"Low Voltage Service Charge",null,null,null,null,null,null,null,null,null,null,null,null,null,"RRRP",null,null,"Income Tax Letter","Disconnect/Reconnect Charges for non payment of account - At Meter After Hours",null,null,null,null,null,null,null,null,null,null,"Essex Powerlines Corporation","Entegrus Powerlines Inc. - Newbury",null,"GENERAL SERVICE 50 TO 1,499 KW - INTERVAL METERED","kW"]
["GENERAL SERVICE 50 TO 1,499 KW - INTERVAL METERED",null,null,null,null,null,null,null,"Low Voltage Service Rate",null,null,null,null,null,null,null,null,null,null,null,null,null,"SPC",null,null,"Interval Meter Interrogation","Disconnect/Reconnect charges for non payment of account – at meter after regular hours",null,null,null,null,null,null,null,null,null,null,"Festival Hydro Inc.","Entegrus Powerlines Inc. - Strathroy, Mounth Brydges & Parkhill",null,"GENERAL SERVICE 50 TO 1,499 KW","kW"]
["GENERAL SERVICE 50 TO 2,499 KW",null,null,null,null,null,null,null,"Low Voltage Volumetric Rate",null,null,null,null,null,null,null,null,null,null,null,null,null,"DRC",null,null,"Interval meter request change","Disconnect/Reconnect Charges for non payment of account - At Meter During Regular Hours",null,null,null,null,null,null,null,null,null,null,"Fort Albany Power Corporation","ENWIN Utilities Ltd.",null,"GENERAL SERVICE 50 TO 2,499 KW","kW"]
["GENERAL SERVICE 50 TO 2,999 KW",null,null,null,null,null,null,null,"LRAM Rate Rider - Effective Until April 30, 2015",null,null,null,null,null,null,null,null,null,null,null,null,null,"SSS",null,null,"Legal letter","Disconnect/Reconnect charges for non payment of account – at meter during regular hours",null,null,null,null,null,null,null,null,null,null,"Fort Frances Power Corporation","Erie Thames Powerlines Corporation",null,"GENERAL SERVICE 50 TO 2,999 KW - INTERVAL METERED","kW"]
["GENERAL SERVICE 50 TO 2,999 KW - INTERVAL METERED",null,null,null,null,null,null,null,"Minimum Distribution Charge - per KW of maximum billing demand in the previous 11 months",null,null,null,null,null,null,null,null,null,null,null,null,null,"SFLF",null,null,"Legal letter charge","Disconnect/Reconnect charges for non payment of account – at pole after regular hours",null,null,null,null,null,null,null,null,null,null,"Greater Sudbury Hydro Inc.","Espanola Regional Hydro Distribution Corporation",null,"GENERAL SERVICE 50 TO 2,999 KW - TIME OF USE","kW"]
["GENERAL SERVICE 50 TO 2,999 KW - TIME OF USE","January",null,null,null,null,null,null,"Monthly Distribution Wheeling Service Rate - Dedicated LV Line",null,null,null,null,null,null,null,null,null,null,null,null,null,"DLF_Secondary_LT_5000kW",null,null,"Meter dispute charge plus Measurement Canada fees (if meter found correct)","Disconnect/Reconnect charges for non payment of account – at pole during regular hours",null,null,null,null,null,null,null,null,null,null,"Grimsby Power Inc.","Essex Powerlines Corporation",null,"GENERAL SERVICE 50 TO 2,999 KW","kW"]
["GENERAL SERVICE 50 TO 4,999 KW","February",null,null,null,null,null,null,"Monthly Distribution Wheeling Service Rate - Hydro One Networks",null,null,null,null,null,null,null,null,null,null,null,null,null,"DLF_Secondary_GT_5000kW",null,null,"Notification charge","Disconnect/Reconnection for >300 volts - after regular hours",null,null,null,null,null,null,null,null,null,null,"Guelph Hydro Electric Systems Inc.","Festival Hydro Inc.",null,"GENERAL SERVICE 50 TO 4,999 KW - INTERVAL METERED","kW"]
["GENERAL SERVICE 50 TO 4,999 KW - INTERVAL METERED","March",null,null,null,null,null,null,"Monthly Distribution Wheeling Service Rate - Shared LV Line",null,null,null,null,null,null,null,null,null,null,null,null,null,"DLF_Primary_LT_5000kW",null,null,"Pulling Post Dated Cheques","Disconnect/Reconnection for >300 volts - during regular hours",null,null,null,null,null,null,null,null,null,null,"Haldimand County Hydro Inc.","Festival Hydro Inc. - Hensall",null,"GENERAL SERVICE 50 TO 4,999 KW - TIME OF USE","kW"]
["GENERAL SERVICE 50 TO 4,999 KW - TIME OF USE","April",null,null,null,null,null,null,"Monthly Distribution Wheeling Service Rate - Waterloo North Hydro",null,null,null,null,null,null,null,null,null,null,null,null,null,"DLF_Primary_GT_5000kW",null,null,"Request for other billing information","Disposal of Concrete Poles",null,null,null,null,null,null,null,null,null,null,"Halton Hills Hydro Inc.","Fort Albany Power Corporation",null,"GENERAL SERVICE 50 TO 4,999 KW (COGENERATION)","kW"]
["GENERAL SERVICE 50 TO 4,999 KW (COGENERATION)","May",null,null,null,null,null,null,"Rate Rider for Application of Tax Change - effective until April 30, 2015",null,null,null,null,null,null,null,null,null,null,null,null,null,"TLF_Secondary_LT_5000kW",null,null,"Returned cheque (plus bank charges)","Dispute Test – Commercial TT -- MC",null,null,null,null,null,null,null,null,null,null,"Hearst Power Distribution Company Limited","Fort Frances Power Corporation",null,"GENERAL SERVICE 50 TO 4,999 KW (FORMERLY TIME OF USE)","kW"]
["GENERAL SERVICE 50 TO 4,999 KW (FORMERLY TIME OF USE)","June",null,null,null,null,null,null,"Rate Rider for Application of Tax Change - effective until December 31, 2014",null,null,null,null,null,null,null,null,null,null,null,null,null,"TLF_Secondary_GT_5000kW",null,null,"Returned cheque charge (plus bank charges)","Install/Remove load control device – after regular hours",null,null,null,null,null,null,null,null,null,null,"Horizon Utilities Corporation","Greater Sudbury Hydro Inc.",null,"GENERAL SERVICE 50 TO 4,999 KW","kW"]
["GENERAL SERVICE 50 TO 499 KW","July",null,null,null,null,null,null,"Rate Rider for Application of Tax Change (2014) - effective until April 30, 2015",null,null,null,null,null,null,null,null,null,null,null,null,null,"TLF_Primary_LT_5000kW",null,null,"Special Billing Service (aggregation)","Install/Remove load control device – during regular hours",null,null,null,null,null,null,null,null,null,null,"Hydro 2000 Inc.","Grimsby Power Inc.",null,"GENERAL SERVICE 50 TO 499 KW","kW"]
["GENERAL SERVICE 50 TO 699 KW","August",null,null,null,null,null,null,"Rate Rider for Application of Tax Change (per connection) - effective until April 30, 2015",null,null,null,null,null,null,null,null,null,null,null,null,null,"TLF_Primary_GT_5000kW",null,null,"Special Billing Service (sub-metering charge per meter)","Interval Meter Interrogation",null,null,null,null,null,null,null,null,null,null,"Hydro Hawkesbury Inc.","Guelph Hydro Electric Systems Inc.",null,"GENERAL SERVICE 50 TO 699 KW","kW"]
["GENERAL SERVICE 50 TO 999 KW","September",null,null,null,null,null,null,"Rate Rider for CGAAP Accounting Changes (2013) - effective until April 30, 2017",null,null,null,null,null,null,null,null,null,null,null,null,null,"TLF_EmbeddedDistributor",null,null,"Special meter reads","Interval Meter Load Management Tool Charge $/month",null,null,null,null,null,null,null,null,null,null,"Hydro One Brampton Networks Inc.","Haldimand County Hydro Inc.",null,"GENERAL SERVICE 50 TO 999 KW - INTERVAL METERED","kW"]
["GENERAL SERVICE 50 TO 999 KW - INTERVAL METERED","October",null,null,null,null,null,null,"Rate Rider for Deferral/Variance Account (2012) - effective unitl April 30, 2016",null,null,null,null,null,null,null,null,null,null,null,null,null,null,null,null,"Statement of Account","Interval meter request change",null,null,null,null,null,null,null,null,null,null,"Hydro One Networks Inc.","Halton Hills Hydro Inc.",null,"GENERAL SERVICE 50 TO 999 KW","kW"]
["GENERAL SERVICE 500 TO 4,999 KW","November",null,null,null,null,null,null,"Rate Rider for Deferral/Variance Account Disposition – effective until April 30, 2015",null,null,null,null,null,null,null,null,null,null,null,null,null,null,null,null,"Unprocessed Payment Charge (plus bank charges)","Late Payment – per annum",null,null,null,null,null,null,null,null,null,null,"Hydro Ottawa Limited","Hearst Power Distribution Company Limited",null,"GENERAL SERVICE 500 TO 4,999 KW","kW"]
["GENERAL SERVICE 700 TO 4,999 KW","December",null,null,null,null,null,null,"Rate Rider for Deferral/Variance Account Disposition (2012) - effective until April 30, 2016",null,null,null,null,null,null,null,null,null,null,null,null,null,null,null,null,null,"Late Payment – per month",null,null,null,null,null,null,null,null,null,null,"Innisfil Hydro Distribution Systems Limited","Horizon Utilities Corporation",null,"GENERAL SERVICE 700 TO 4,999 KW","kW"]
["GENERAL SERVICE DEMAND BILLED (50 KW AND ABOVE) [GSD]",null,null,null,null,null,null,null,"Rate Rider for Deferral/Variance Account Disposition (2013) - effective until April 30, 2014",null,null,null,null,null,null,null,null,null,null,null,null,null,null,null,null,null,"Layout fees",null,null,null,null,null,null,null,null,null,null,"Kashechewan Power Corporation","Hydro 2000 Inc.",null,"GENERAL SERVICE DEMAND BILLED (50 KW AND ABOVE) [GSD]","kW"]
["GENERAL SERVICE ENERGY BILLED (LESS THAN 50 KW) [GSE-METERED]",null,null,null,null,null,null,null,"Rate Rider for Deferral/Variance Account Disposition (2014) - effective until April 28, 2016",null,null,null,null,null,null,null,null,null,null,null,null,null,null,null,null,null,"Meter dispute charge plus Measurement Canada fees (if meter found correct)",null,null,null,null,null,null,null,null,null,null,"Kenora Hydro Electric Corporation Ltd.","Hydro Hawkesbury Inc.",null,"GENERAL SERVICE ENERGY BILLED (LESS THAN 50 KW) [GSE-METERED]","kWh"]
["GENERAL SERVICE ENERGY BILLED (LESS THAN TO 50 KW) [GSE-UNMETERED]",null,null,null,null,null,null,null,"Rate Rider for Deferral/Variance Account Disposition (2014) - effective until April 30, 2015",null,null,null,null,null,null,null,null,null,null,null,null,null,null,null,null,null,"Meter Interrogation Charge",null,null,null,null,null,null,null,null,null,null,"Kingston Hydro Corporation","Hydro One Brampton Networks Inc.",null,"GENERAL SERVICE ENERGY BILLED (LESS THAN TO 50 KW) [GSE-UNMETERED]","kWh"]
["GENERAL SERVICE EQUAL TO OR GREATER THAN 1,500 KW",null,null,null,null,null,null,null,"Rate Rider for Deferral/Variance Account Disposition (2014) - effective until Decembeer 31, 2015",null,null,null,null,null,null,null,null,null,null,null,null,null,null,null,null,null,"Missed Service Appointment",null,null,null,null,null,null,null,null,null,null,"Kitchener-Wilmot Hydro Inc.","Hydro One Networks Inc.",null,"GENERAL SERVICE EQUAL TO OR GREATER THAN 1,500 KW - INTERVAL METERED","kW"]
["GENERAL SERVICE EQUAL TO OR GREATER THAN 1,500 KW - INTERVAL METERED",null,null,null,null,null,null,null,"Rate Rider for Deferral/Variance Account Disposition (2014) - effective until December 30, 2015",null,null,null,null,null,null,null,null,null,null,null,null,null,null,null,null,null,"Norfolk Pole Rentals – Billed",null,null,null,null,null,null,null,null,null,null,"Lakefront Utilities Inc.","Hydro Ottawa Limited",null,"GENERAL SERVICE EQUAL TO OR GREATER THAN 1,500 KW","kW"]
["GENERAL SERVICE GREATER THAN 1,000 KW",null,null,null,null,null,null,null,"Rate Rider for Deferral/Variance Account Disposition (2014) - effective until December 31, 2014",null,null,null,null,null,null,null,null,null,null,null,null,null,null,null,null,null,"Optional Interval/TOU Meter charge $/month",null,null,null,null,null,null,null,null,null,null,"Lakeland Power Distribution Ltd.","Innisfil Hydro Distribution Systems Limited",null,"GENERAL SERVICE GREATER THAN 1,000 KW","kW"]
["GENERAL SERVICE GREATER THAN 50 kW - WMP",null,null,null,null,null,null,null,"Rate Rider for Deferral/Variance Account Disposition (2014) - effective until December 31, 2015",null,null,null,null,null,null,null,null,null,null,null,null,null,null,null,null,null,"Overtime Locate",null,null,null,null,null,null,null,null,null,null,"London Hydro Inc.","Kashechewan Power Corporation",null,"GENERAL SERVICE INTERMEDIATE 1,000 TO 4,999 KW","kW"]
["GENERAL SERVICE INTERMEDIATE 1,000 TO 4,999 KW",null,null,null,null,null,null,null,"Rate Rider for Deferral/Variance Account Dispositon (2012) - effective until April 30, 2016",null,null,null,null,null,null,null,null,null,null,null,null,null,null,null,null,null,"Owner Requested Disconnection/Reconnection – after regular hours",null,null,null,null,null,null,null,null,null,null,"Midland Power Utility Corporation","Kenora Hydro Electric Corporation Ltd.",null,"GENERAL SERVICE INTERMEDIATE RATE CLASS 1,000 TO 4,999 KW (FORMERLY GENERAL SERVICE > 50 KW CUSTOMERS)","kW"]
["GENERAL SERVICE INTERMEDIATE RATE CLASS 1,000 TO 4,999 KW (FORMERLY GENERAL SERVICE > 50 KW CUSTOMERS)",null,null,null,null,null,null,null,"Rate Rider for Disposition of Accounting Changes Under CGAAP Account 1576 - effective until April 30, 2016",null,null,null,null,null,null,null,null,null,null,null,null,null,null,null,null,null,"Owner Requested Disconnection/Reconnection – during regular hours",null,null,null,null,null,null,null,null,null,null,"Milton Hydro Distribution inc.","Kingston Hydro Corporation",null,"GENERAL SERVICE INTERMEDIATE RATE CLASS 1,000 TO 4,999 KW (FORMERLY LARGE USE CUSTOMERS)","kW"]
["GENERAL SERVICE INTERMEDIATE RATE CLASS 1,000 TO 4,999 KW (FORMERLY LARGE USE CUSTOMERS)",null,null,null,null,null,null,null,"Rate Rider for Disposition of Deferral/Variance Accounts (2010) - effective until December 31, 2014",null,null,null,null,null,null,null,null,null,null,null,null,null,null,null,null,null,"Returned cheque (plus bank charges)",null,null,null,null,null,null,null,null,null,null,"Newmarket - Tay Power Distribution Ltd.","Kitchener-Wilmot Hydro Inc.",null,"GENERAL SERVICE LESS THAN 50 KW - SINGLE PHASE ENERGY-BILLED [G1]","kWh"]
["GENERAL SERVICE LESS THAN 50 KW",null,null,null,null,null,null,null,"Rate Rider for Disposition of Deferral/Variance Accounts (2011) - effective until April 30, 2015",null,null,null,null,null,null,null,null,null,null,null,null,null,null,null,null,null,"Rural system expansion / line connection fee",null,null,null,null,null,null,null,null,null,null,"Niagara Peninsula Energy Inc.","Lakefront Utilities Inc.",null,"GENERAL SERVICE LESS THAN 50 KW - THREE PHASE ENERGY-BILLED [G3]","kWh"]
["GENERAL SERVICE LESS THAN 50 KW - SINGLE PHASE ENERGY-BILLED [G1]",null,null,null,null,null,null,null,"Rate Rider for Disposition of Deferral/Variance Accounts (2011) - effective until April 30, 2016",null,null,null,null,null,null,null,null,null,null,null,null,null,null,null,null,null,"Same Day Open Trench",null,null,null,null,null,null,null,null,null,null,"Niagara-on-the-Lake Hydro Inc.","Lakeland Power Distribution Ltd.",null,"GENERAL SERVICE LESS THAN 50 KW - TRANSMISSION CLASS ENERGY-BILLED [T]","kWh"]
["GENERAL SERVICE LESS THAN 50 KW - THREE PHASE ENERGY-BILLED [G3]",null,null,null,null,null,null,null,"Rate Rider for Disposition of Deferral/Variance Accounts (2012) - effective until April 30, 2014",null,null,null,null,null,null,null,null,null,null,null,null,null,null,null,null,null,"Scheduled Day Open Trench",null,null,null,null,null,null,null,null,null,null,"Norfolk Power Distribution Inc.","London Hydro Inc.",null,"GENERAL SERVICE LESS THAN 50 KW - URBAN ENERGY-BILLED [UG]","kWh"]
["GENERAL SERVICE LESS THAN 50 KW - TRANSMISSION CLASS ENERGY-BILLED [T]",null,null,null,null,null,null,null,"Rate Rider for Disposition of Deferral/Variance Accounts (2012) - effective until April 30, 2015",null,null,null,null,null,null,null,null,null,null,null,null,null,null,null,null,null,"Service call – after regular hours",null,null,null,null,null,null,null,null,null,null,"North Bay Hydro Distribution Limited","Midland Power Utility Corporation",null,"GENERAL SERVICE LESS THAN 50 KW","kWh"]
["GENERAL SERVICE LESS THAN 50 KW - URBAN ENERGY-BILLED [UG]",null,null,null,null,null,null,null,"Rate Rider for Disposition of Deferral/Variance Accounts (2012) - effective until April 30, 2016",null,null,null,null,null,null,null,null,null,null,null,null,null,null,null,null,null,"Service call – customer owned equipment",null,null,null,null,null,null,null,null,null,null,"Northern Ontario Wires Inc.","Milton Hydro Distribution inc.",null,"GENERAL SERVICE SINGLE PHASE - G1","kW"]
["GENERAL SERVICE SINGLE PHASE - G1",null,null,null,null,null,null,null,"Rate Rider for Disposition of Deferral/Variance Accounts (2012) - effective until August 31, 2014",null,null,null,null,null,null,null,null,null,null,null,null,null,null,null,null,null,"Service Call – Customer-owned Equipment – After Regular Hours",null,null,null,null,null,null,null,null,null,null,"Oakville Hydro Electricity Distribution Inc.","Newmarket - Tay Power Distribution Ltd. - Newmarket",null,"GENERAL SERVICE THREE PHASE - G3","kW"]
["GENERAL SERVICE THREE PHASE - G3",null,null,null,null,null,null,null,"Rate Rider for Disposition of Deferral/Variance Accounts (2012) - effective until December 31, 2015",null,null,null,null,null,null,null,null,null,null,null,null,null,null,null,null,null,"Service Call – Customer-owned Equipment – During Regular Hours",null,null,null,null,null,null,null,null,null,null,"Orangeville Hydro Limited","Newmarket - Tay Power Distribution Ltd. - Tay",null,"INTERMEDIATE USERS","kW"]
["INTERMEDIATE USERS",null,null,null,null,null,null,null,"Rate Rider for Disposition of Deferral/Variance Accounts (2012) - effective until December 31, 2016 Applicable only in the former service area of Clinton Power",null,null,null,null,null,null,null,null,null,null,null,null,null,null,null,null,null,"Service Charge for onsite interrogation of interval meter due to customer phone line failure - required weekly until line repaired $ 6",null,null,null,null,null,null,null,null,null,null,"Orillia Power Distribution Corporation","Niagara Peninsula Energy Inc. - Niagara Falls",null,"INTERMEDIATE WITH SELF GENERATION","kW"]
["INTERMEDIATE WITH SELF GENERATION",null,null,null,null,null,null,null,"Rate Rider for Disposition of Deferral/Variance Accounts (2012) – effective until December 31, 2016 Applicable only in the former service area of Clinton Power",null,null,null,null,null,null,null,null,null,null,null,null,null,null,null,null,null,"Service Layout - Commercial",null,null,null,null,null,null,null,null,null,null,"Oshawa PUC Networks Inc.","Niagara Peninsula Energy Inc. - Peninsula West",null,"LARGE USE - 3TS","kW"]
["LARGE USE",null,null,null,null,null,null,null,"Rate Rider for Disposition of Deferral/Variance Accounts (2012) - effective until January 31, 2014",null,null,null,null,null,null,null,null,null,null,null,null,null,null,null,null,null,"Service Layout - ResidentiaI",null,null,null,null,null,null,null,null,null,null,"Ottawa River Power Corporation","Niagara-on-the-Lake Hydro Inc.",null,"LARGE USE - FORD ANNEX","kW"]
["LARGE USE - 3TS",null,null,null,null,null,null,null,"Rate Rider for Disposition of Deferral/Variance Accounts (2012) - effective until June 30, 2014",null,null,null,null,null,null,null,null,null,null,null,null,null,null,null,null,null,"Special Billing Service (sub-metering charge per meter)",null,null,null,null,null,null,null,null,null,null,"Parry Sound Power Corporation","Norfolk Power Distribution Inc.",null,"LARGE USE - REGULAR","kW"]
["LARGE USE - FORD ANNEX",null,null,null,null,null,null,null,"Rate Rider for Disposition of Deferral/Variance Accounts (2013) - Applicable only to Wholesale Market Participants - effective until April 30, 2015",null,null,null,null,null,null,null,null,null,null,null,null,null,null,null,null,null,"Special meter reads",null,null,null,null,null,null,null,null,null,null,"Peterborough Distribution Incorporated","North Bay Hydro Distribution Limited",null,"LARGE USE > 5000 KW","kW"]
["LARGE USE - REGULAR",null,null,null,null,null,null,null,"Rate Rider for Disposition of Deferral/Variance Accounts (2013) - effective until April 30, 2014",null,null,null,null,null,null,null,null,null,null,null,null,null,null,null,null,null,"Specific Charge for Access to the Power Poles - $/pole/year",null,null,null,null,null,null,null,null,null,null,"PowerStream Inc.","Northern Ontario Wires Inc.",null,"LARGE USE","kW"]
["LARGE USE > 5000 KW",null,null,null,null,null,null,null,"Rate Rider for Disposition of Deferral/Variance Accounts (2013) - effective until April 30, 2015",null,null,null,null,null,null,null,null,null,null,null,null,null,null,null,null,null,"Specific Charge for Bell Canada Access to the Power Poles – per pole/year",null,null,null,null,null,null,null,null,null,null,"PUC Distribution Inc.","Oakville Hydro Electricity Distribution Inc.",null,"microFIT","$"]
["microFIT",null,null,null,null,null,null,null,"Rate Rider for Disposition of Deferral/Variance Accounts (2013) - effective until April 30, 2015, not applicable to Wholesale Market Participants",null,null,null,null,null,null,null,null,null,null,null,null,null,null,null,null,null,"Switching for company maintenance – Charge based on Time and Materials",null,null,null,null,null,null,null,null,null,null,"Renfrew Hydro Inc.","Orangeville Hydro Limited",null,"RESIDENTIAL - HENSALL","kWh"]
["RESIDENTIAL",null,null,null,null,null,null,null,"Rate Rider for Disposition of Deferral/Variance Accounts (2013) - effective until April 30, 2017",null,null,null,null,null,null,null,null,null,null,null,null,null,null,null,null,null,"Temporary Service – Install & remove – overhead – no transformer",null,null,null,null,null,null,null,null,null,null,"Rideau St. Lawrence Distribution Inc.","Orillia Power Distribution Corporation",null,"RESIDENTIAL - HIGH DENSITY [R1]","kWh"]
["RESIDENTIAL - HENSALL",null,null,null,null,null,null,null,"Rate Rider for Disposition of Deferral/Variance Accounts (2013) - effective until August 31, 2014",null,null,null,null,null,null,null,null,null,null,null,null,null,null,null,null,null,"Temporary Service – Install & remove – overhead – with transformer",null,null,null,null,null,null,null,null,null,null,"Sioux Lookout Hydro Inc.","Oshawa PUC Networks Inc.",null,"RESIDENTIAL - LOW DENSITY [R2]","kWh"]
["RESIDENTIAL - HIGH DENSITY [R1]",null,null,null,null,null,null,null,"Rate Rider for Disposition of Deferral/Variance Accounts (2013) - effective until December 31, 2014",null,null,null,null,null,null,null,null,null,null,null,null,null,null,null,null,null,"Temporary Service – Install & remove – underground – no transformer",null,null,null,null,null,null,null,null,null,null,"St. Thomas Energy Inc.","Ottawa River Power Corporation",null,"RESIDENTIAL - MEDIUM DENSITY [R1]","kWh"]
["RESIDENTIAL - LOW DENSITY [R2]",null,null,null,null,null,null,null,"Rate Rider for Disposition of Deferral/Variance Accounts (2013) - effective until May 31, 2014",null,null,null,null,null,null,null,null,null,null,null,null,null,null,null,null,null,"Temporary service install & remove – overhead – no transformer",null,null,null,null,null,null,null,null,null,null,"Thunder Bay Hydro Electricity Distribution Inc.","Parry Sound Power Corporation",null,"RESIDENTIAL - NORMAL DENSITY [R2]","kWh"]
["RESIDENTIAL - MEDIUM DENSITY [R1]",null,null,null,null,null,null,null,"Rate Rider for Disposition of Deferred PILs Variance Account 1562 - effective until March 31, 2016",null,null,null,null,null,null,null,null,null,null,null,null,null,null,null,null,null,"Temporary Service Install & Remove – Overhead – With Transformer",null,null,null,null,null,null,null,null,null,null,"Tillsonburg Hydro Inc.","Peterborough Distribution Incorporated",null,"RESIDENTIAL - TIME OF USE","kWh"]
["RESIDENTIAL - NORMAL DENSITY [R2]",null,null,null,null,null,null,null,"Rate Rider for Disposition of Deferred PILs Variance Account 1562 (2012) - effective until April 30, 2015",null,null,null,null,null,null,null,null,null,null,null,null,null,null,null,null,null,"Temporary Service Install & Remove – Underground – No Transformer",null,null,null,null,null,null,null,null,null,null,"Toronto Hydro-Electric System Limited","PowerStream Inc. - Barrie",null,"RESIDENTIAL - URBAN [UR]","kWh"]
["RESIDENTIAL - TIME OF USE",null,null,null,null,null,null,null,"Rate Rider for Disposition of Deferred PILs Variance Account 1562 (2012) - effective until April 30, 2016",null,null,null,null,null,null,null,null,null,null,null,null,null,null,null,null,null,"Temporary service installation and removal – overhead – no transformer",null,null,null,null,null,null,null,null,null,null,"Veridian Connections Inc.","PowerStream Inc. - South",null,"RESIDENTIAL REGULAR","kWh"]
["RESIDENTIAL - URBAN [UR]",null,null,null,null,null,null,null,"Rate Rider for Disposition of Deferred PILs Variance Account 1562 (2nd Installment - 2012) - effective until April 30, 2016",null,null,null,null,null,null,null,null,null,null,null,null,null,null,null,null,null,"Temporary service installation and removal – overhead – with transformer",null,null,null,null,null,null,null,null,null,null,"Wasaga Distribution Inc.","PUC Distribution Inc.",null,"RESIDENTIAL","kWh"]
["RESIDENTIAL REGULAR",null,null,null,null,null,null,null,"Rate Rider for Disposition of Deferred PILs Variance Account 1562 (per connection) (2012) - effective until April 30, 2015",null,null,null,null,null,null,null,null,null,null,null,null,null,null,null,null,null,"Temporary service installation and removal – underground – no transformer",null,null,null,null,null,null,null,null,null,null,"Waterloo North Hydro Inc.","Renfrew Hydro Inc.",null,"RESIDENTIAL SUBURBAN SEASONAL","kWh"]
["RESIDENTIAL SUBURBAN",null,null,null,null,null,null,null,"Rate Rider for Disposition of Deferred PILs Variance Account 1562 (per connection) (2012) - effective until April 30, 2016",null,null,null,null,null,null,null,null,null,null,null,null,null,null,null,null,null,null,null,null,null,null,null,null,null,null,null,null,"Welland Hydro-Electric System Corp.","Rideau St. Lawrence Distribution Inc.",null,"RESIDENTIAL SUBURBAN","kWh"]
["RESIDENTIAL SUBURBAN SEASONAL",null,null,null,null,null,null,null,"Rate Rider for Disposition of Global Adjustment Sub-Account (2011) - effective until April 30, 2015 Applicable only for Non-RPP Customers",null,null,null,null,null,null,null,null,null,null,null,null,null,null,null,null,null,null,null,null,null,null,null,null,null,null,null,null,"Wellington North Power Inc.","Sioux Lookout Hydro Inc.",null,"RESIDENTIAL SUBURBAN YEAR ROUND","kWh"]
["RESIDENTIAL SUBURBAN YEAR ROUND",null,null,null,null,null,null,null,"Rate Rider for Disposition of Global Adjustment Sub-Account (2011) - effective until April 30, 2016 Applicable only for Non-RPP Customers",null,null,null,null,null,null,null,null,null,null,null,null,null,null,null,null,null,null,null,null,null,null,null,null,null,null,null,null,"West Coast Huron Energy Inc.","St. Thomas Energy Inc.",null,"RESIDENTIAL URBAN","kWh"]
["RESIDENTIAL URBAN",null,null,null,null,null,null,null,"Rate Rider for Disposition of Global Adjustment Sub-Account (2012) - effective until April 30, 2014 Applicable only for Non-RPP Customers",null,null,null,null,null,null,null,null,null,null,null,null,null,null,null,null,null,null,null,null,null,null,null,null,null,null,null,null,"West Perth Power Inc.","Thunder Bay Hydro Electricity Distribution Inc.",null,"RESIDENTIAL URBAN YEAR-ROUND","kWh"]
["RESIDENTIAL URBAN YEAR-ROUND",null,null,null,null,null,null,null,"Rate Rider for Disposition of Global Adjustment Sub-Account (2012) - effective until April 30, 2015 Applicable only for Non-RPP Customers",null,null,null,null,null,null,null,null,null,null,null,null,null,null,null,null,null,null,null,null,null,null,null,null,null,null,null,null,"Westario Power Inc.","Tillsonburg Hydro Inc.",null,"SEASONAL RESIDENTIAL - HIGH DENSITY [R3]","kWh"]
["SEASONAL RESIDENTIAL",null,null,null,null,null,null,null,"Rate Rider for Disposition of Global Adjustment Sub-Account (2012) - effective until April 30, 2015 Applicatble only for Non-RPP Customers",null,null,null,null,null,null,null,null,null,null,null,null,null,null,null,null,null,null,null,null,null,null,null,null,null,null,null,null,"Whitby Hydro Electric Corporation","Toronto Hydro-Electric System Limited",null,"SEASONAL RESIDENTIAL - NORMAL DENSITY [R4]","kWh"]
["SEASONAL RESIDENTIAL - HIGH DENSITY [R3]",null,null,null,null,null,null,null,"Rate Rider for Disposition of Global Adjustment Sub-Account (2012) - effective until April 30, 2016 Applicable only for Non-RPP Customers",null,null,null,null,null,null,null,null,null,null,null,null,null,null,null,null,null,null,null,null,null,null,null,null,null,null,null,null,"Woodstock Hydro Services Inc.","Veridian Connections Inc.",null,"SEASONAL RESIDENTIAL","kWh"]
["SEASONAL RESIDENTIAL - NORMAL DENSITY [R4]",null,null,null,null,null,null,null,"Rate Rider for Disposition of Global Adjustment Sub-Account (2012) - effective until January 31, 2014. Applicable only for Non-RPP Customers",null,null,null,null,null,null,null,null,null,null,null,null,null,null,null,null,null,null,null,null,null,null,null,null,null,null,null,null,null,"Veridian Connections Inc. - Gravenhurst",null,"SENTINEL LIGHTING","kW"]
["SENTINEL LIGHTING",null,null,null,null,null,null,null,"Rate Rider for Disposition of Global Adjustment Sub-Account (2012) - effective until June 30, 2014 Applicable only for Non-RPP Customers",null,null,null,null,null,null,null,null,null,null,null,null,null,null,null,null,null,null,null,null,null,null,null,null,null,null,null,null,null,"Wasaga Distribution Inc.",null,"SMALL COMMERCIAL AND USL - PER CONNECTION","kW"]
["SMALL COMMERCIAL AND USL - PER CONNECTION",null,null,null,null,null,null,null,"Rate Rider for Disposition of Global Adjustment Sub-Account (2012) Applicable only for Non-RPP Customers - effective until August 31, 2014",null,null,null,null,null,null,null,null,null,null,null,null,null,null,null,null,null,null,null,null,null,null,null,null,null,null,null,null,null,"Waterloo North Hydro Inc.",null,"SMALL COMMERCIAL AND USL - PER METER","kW"]
["SMALL COMMERCIAL AND USL - PER METER",null,null,null,null,null,null,null,"Rate Rider for Disposition of Global Adjustment Sub-Account (2012) Applicable only to Non-RPP Customers - effective until August 31, 2014",null,null,null,null,null,null,null,null,null,null,null,null,null,null,null,null,null,null,null,null,null,null,null,null,null,null,null,null,null,"Welland Hydro-Electric System Corp.",null,"STANDARD A GENERAL SERVICE AIR ACCESS","kW"]
["STANDARD A GENERAL SERVICE AIR ACCESS",null,null,null,null,null,null,null,"Rate Rider for Disposition of Global Adjustment Sub-Account (2013) - effective until April 30, 2014 Applicable only for Non-RPP Customers",null,null,null,null,null,null,null,null,null,null,null,null,null,null,null,null,null,null,null,null,null,null,null,null,null,null,null,null,null,"Wellington North Power Inc.",null,"STANDARD A GENERAL SERVICE ROAD/RAIL","kW"]
["STANDARD A GENERAL SERVICE ROAD/RAIL",null,null,null,null,null,null,null,"Rate Rider for Disposition of Global Adjustment Sub-Account (2013) - effective until April 30, 2015 Applicable only for Non-RPP Customers",null,null,null,null,null,null,null,null,null,null,null,null,null,null,null,null,null,null,null,null,null,null,null,null,null,null,null,null,null,"West Coast Huron Energy Inc.",null,"STANDARD A RESIDENTIAL AIR ACCESS","kW"]
["STANDARD A GRID CONNECTED",null,null,null,null,null,null,null,"Rate Rider for Disposition of Global Adjustment Sub-Account (2013) - effective until April 30, 2015 Applicable only for Non-RPP Customers and excluding Wholesale Market Participants",null,null,null,null,null,null,null,null,null,null,null,null,null,null,null,null,null,null,null,null,null,null,null,null,null,null,null,null,null,"West Perth Power Inc.",null,"STANDARD A RESIDENTIAL ROAD/RAIL","kW"]
["STANDARD A RESIDENTIAL AIR ACCESS",null,null,null,null,null,null,null,"Rate Rider for Disposition of Global Adjustment Sub-Account (2013) - effective until April 30, 2017 Applicable only for Non-RPP Customers",null,null,null,null,null,null,null,null,null,null,null,null,null,null,null,null,null,null,null,null,null,null,null,null,null,null,null,null,null,"Westario Power Inc.",null,"STANDBY - GENERAL SERVICE 1,000 - 5,000 KW","kW"]
["STANDARD A RESIDENTIAL ROAD/RAIL",null,null,null,null,null,null,null,"Rate Rider For Disposition of Global Adjustment Sub-Account (2013) - effective until August 31, 2014 Applicable only for Non-RPP Customers",null,null,null,null,null,null,null,null,null,null,null,null,null,null,null,null,null,null,null,null,null,null,null,null,null,null,null,null,null,"Whitby Hydro Electric Corporation",null,"STANDBY - GENERAL SERVICE 50 - 1,000 KW","kW"]
["STANDBY - GENERAL SERVICE 1,000 - 5,000 KW",null,null,null,null,null,null,null,"Rate Rider for Disposition of Global Adjustment Sub-Account (2013) - effective until December 31, 2014 Applicable only for Non-RPP Customers",null,null,null,null,null,null,null,null,null,null,null,null,null,null,null,null,null,null,null,null,null,null,null,null,null,null,null,null,null,"Woodstock Hydro Services Inc.",null,"STANDBY - LARGE USE","kW"]
["STANDBY - GENERAL SERVICE 50 - 1,000 KW",null,null,null,null,null,null,null,"Rate Rider for Disposition of Global Adjustment Sub-Account (2013) - effective until May 31, 2014 Applicable only for Non-RPP Customers",null,null,null,null,null,null,null,null,null,null,null,null,null,null,null,null,null,null,null,null,null,null,null,null,null,null,null,null,null,null,null,"STANDBY DISTRIBUTION SERVICE","kW"]
["STANDBY - LARGE USE",null,null,null,null,null,null,null,"Rate Rider for Disposition of Global Adjustment Sub-Account (2014) - effective until December 31, 2014. Applicable only for Non-RPP - Class B Customers",null,null,null,null,null,null,null,null,null,null,null,null,null,null,null,null,null,null,null,null,null,null,null,null,null,null,null,null,null,null,null,"STANDBY POWER - APPROVED ON AN INTERIM BASIS","kW"]
["STANDBY DISTRIBUTION SERVICE",null,null,null,null,null,null,null,"Rate Rider for Disposition of Global Adjustment Sub-Account (2014) - effective until December 31, 2014. Applicable only for Non-RPP Customers",null,null,null,null,null,null,null,null,null,null,null,null,null,null,null,null,null,null,null,null,null,null,null,null,null,null,null,null,null,null,null,"STANDBY POWER GENERAL SERVICE 1,500 TO 4,999 KW","kW"]
["STANDBY POWER",null,null,null,null,null,null,null,"Rate Rider for Disposition of Global Adjustment Sub-Account (2014) - effective until December 31, 2014. Applicable only for Non-RPP Customers - Class A Customers",null,null,null,null,null,null,null,null,null,null,null,null,null,null,null,null,null,null,null,null,null,null,null,null,null,null,null,null,null,null,null,"STANDBY POWER GENERAL SERVICE 50 TO 1,499 KW","kW"]
["STANDBY POWER - APPROVED ON AN INTERIM BASIS",null,null,null,null,null,null,null,"Rate Rider for Disposition of Global Adjustment Sub-Account (2014) - effective until December 31, 2014. Applicable only for Non-RPP Customers - Interval Metered",null,null,null,null,null,null,null,null,null,null,null,null,null,null,null,null,null,null,null,null,null,null,null,null,null,null,null,null,null,null,null,"STANDBY POWER GENERAL SERVICE LARGE USE","kW"]
["STANDBY POWER GENERAL SERVICE 1,500 TO 4,999 KW",null,null,null,null,null,null,null,"Rate Rider for Disposition of Global Adjustment Sub-Account (2014) - effective until December 31, 2014. Applicable only for Non-RPP Customers - Non Interval Metered",null,null,null,null,null,null,null,null,null,null,null,null,null,null,null,null,null,null,null,null,null,null,null,null,null,null,null,null,null,null,null,"STANDBY POWER","kW"]
["STANDBY POWER GENERAL SERVICE 50 TO 1,499 KW",null,null,null,null,null,null,null,"Rate Rider for Disposition of Post Retirement Actuarial Gain - effective until March 31, 2025",null,null,null,null,null,null,null,null,null,null,null,null,null,null,null,null,null,null,null,null,null,null,null,null,null,null,null,null,null,null,null,"STREET LIGHTING","kWh"]
["STANDBY POWER GENERAL SERVICE LARGE USE",null,null,null,null,null,null,null,"Rate Rider for Disposition of Residual Hisotrical Smart Meter Costs - effective until April 30, 2015",null,null,null,null,null,null,null,null,null,null,null,null,null,null,null,null,null,null,null,null,null,null,null,null,null,null,null,null,null,null,null,"SUB TRANSMISSION [ST]","kW"]
["STREET LIGHTING",null,null,null,null,null,null,null,"Rate Rider for Disposition of Residual Hisotrical Smart Meter Costs - effective until April 30, 2017",null,null,null,null,null,null,null,null,null,null,null,null,null,null,null,null,null,null,null,null,null,null,null,null,null,null,null,null,null,null,null,"UNMETERED SCATTERED LOAD","kWh"]
["SUB TRANSMISSION [ST]",null,null,null,null,null,null,null,"Rate Rider for Disposition of Residual Historical Smart Meter Costs - effective until April 30, 2014",null,null,null,null,null,null,null,null,null,null,null,null,null,null,null,null,null,null,null,null,null,null,null,null,null,null,null,null,null,null,null,"URBAN GENERAL SERVICE DEMAND BILLED (50 KW AND ABOVE) [UGD]","kW"]
["UNMETERED SCATTERED LOAD",null,null,null,null,null,null,null,"Rate Rider for Disposition of Residual Historical Smart Meter Costs - effective until April 30, 2016",null,null,null,null,null,null,null,null,null,null,null,null,null,null,null,null,null,null,null,null,null,null,null,null,null,null,null,null,null,null,null,"URBAN GENERAL SERVICE ENERGY BILLED (LESS THAN 50 KW) [UGE]","kWh"]
["URBAN GENERAL SERVICE DEMAND BILLED (50 KW AND ABOVE) [UGD]",null,null,null,null,null,null,null,"Rate Rider for Disposition of Residual Historical Smart Meter Costs - effective until August 31, 2014",null,null,null,null,null,null,null,null,null,null,null,null,null,null,null,null,null,null,null,null,null,null,null,null,null,null,null,null,null,null,null,"WESTPORT SEWAGE TREATMENT PLANT","kW"]
["URBAN GENERAL SERVICE ENERGY BILLED (LESS THAN 50 KW) [UGE]",null,null,null,null,null,null,null,"Rate Rider for Disposition of Residual Historical Smart Meter Costs - effective until August 31, 2015",null,null,null,null,null,null,null,null,null,null,null,null,null,null,null,null,null,null,null,null,null,null,null,null,null,null,null,null,null,null,null,"YEAR-ROUND RESIDENTIAL - R2","kWh"]
["WESTPORT SEWAGE TREATMENT PLANT",null,null,null,null,null,null,null,"Rate Rider for Disposition of Residual Historical Smart Meter Costs - effective until December 31, 2014"]
["YEAR-ROUND RESIDENTIAL - R2",null,null,null,null,null,null,null,"Rate Rider for Disposition of Residual Historical Smart Meter Costs – effective until December 31, 2014"]
[null,null,null,null,null,null,null,null,"Rate Rider for Disposition of Residual Historical Smart Meter Costs - effective until December 31, 2015"]
[null,null,null,null,null,null,null,null,"Rate Rider for Disposition of Residual Historical Smart Meter Costs - effective until December 31, 2016"]
[null,null,null,null,null,null,null,null,"Rate Rider for Disposition of Residual Historical Smart Meter Costs - effective until October 31, 2014"]
[null,null,null,null,null,null,null,null,"Rate Rider for Disposition of Residual Historical Smart Meter Costs - effective until September 30, 2014"]
[null,null,null,null,null,null,null,null,"Rate Rider for Disposition of Residual Historical Smart Meter Costs - Non-Interval Metered \n - effective until April 30, 2014"]
[null,null,null,null,null,null,null,null,"Rate Rider for Disposition of Residual Historical Smart Meter Costs 2 - in effect until the effective \n date of the next cost of service-based rate order"]
[null,null,null,null,null,null,null,null,"Rate Rider for Disposition of Residual Historical Smart Meter Costs 3 - in effect until the effective \n date of the next cost of service-based rate order"]
[null,null,null,null,null,null,null,null,"Rate Rider for Disposition of Residual Incremental Historical Smart Meter Costs - \n effective until August 31, 2015"]
[null,null,null,null,null,null,null,null,"Rate Rider for Disposition of Stranded Meter costs - effective until April 30, 2015"]
[null,null,null,null,null,null,null,null,"Rate Rider for Disposition of Stranded Meter Costs - effective until April 30, 2016"]
[null,null,null,null,null,null,null,null,"Rate Rider for Disposition of Stranded Meter Costs - effective until April 30, 2017"]
[null,null,null,null,null,null,null,null,"Rate Rider for Global Adjustment Sub Account Disposition - effective until April 30, 2016 Applicable only for Non RPP Customers"]
[null,null,null,null,null,null,null,null,"Rate Rider for Global Adjustment Sub-Account Disposition \n Applicable only for Non-RPP Customers – effective until April 30, 2015"]
[null,null,null,null,null,null,null,null,"Rate Rider for Global Adjustment Sub-Account Disposition (2014) - effective until April 28, 2016 Applicable only for Non-RPP Customers"]
[null,null,null,null,null,null,null,null,"Rate Rider for Global Adjustment Sub-Account Disposition (2014) - effective until April 30, 2015 Applicable only for Non-RPP Customers"]
[null,null,null,null,null,null,null,null,"Rate Rider for Global Adjustment Sub-Account Disposition (2014) - effective until December 30, 2015 Applicable only for Non-RPP Customers"]
[null,null,null,null,null,null,null,null,"Rate Rider for Global Adjustment Sub-Account Disposition (2014) - effective until December 31, 2014 Applicable only for Non-RPP Customers"]
[null,null,null,null,null,null,null,null,"Rate Rider for Global Adjustment Sub-Account Disposition (2014) - effective until December 31, 2015 Applicable only for Non-RPP Customers"]
[null,null,null,null,null,null,null,null,"Rate Rider for Global Adjustment Sub-Account Disposition (2014) - effective until December, 2015 Applicable only for Non-RPP Customers"]
[null,null,null,null,null,null,null,null,"Rate Rider for Incremental Capital - Distribution Volumetric - effective until April 30, 2016"]
[null,null,null,null,null,null,null,null,"Rate Rider for Incremental Capital - Service Charge - effective until April 30, 2016"]
[null,null,null,null,null,null,null,null,"Rate Rider for Incremental Capital (2012) - effective until April 30, 2015"]
[null,null,null,null,null,null,null,null,"Rate Rider for Lost Revenue Adjustment Mechanism Variance Account (LRAMVA) Recovery \n (2012 CDM Activities) - effective until April 30, 2015"]
[null,null,null,null,null,null,null,null,"Rate Rider for Recover of Residual Historical Smart meter Costs - effective until June 30, 2014"]
[null,null,null,null,null,null,null,null,"Rate Rider for Recovery of CGAAP/CWIP Differential - in effect until December 31, 2016"]
[null,null,null,null,null,null,null,null,"Rate Rider for Recovery of Foregone Revenue - effective until April 30, 2015"]
[null,null,null,null,null,null,null,null,"Rate Rider for Recovery of Forgone Revenue - effective until April 30, 2015"]
[null,null,null,null,null,null,null,null,"Rate Rider for Recovery of Forgone Revenue - effective until December 31, 2014"]
[null,null,null,null,null,null,null,null,"Rate Rider for Recovery of Green Energy Act related costs - effective until December 31, 2014"]
[null,null,null,null,null,null,null,null,"Rate Rider for Recovery of Incremental Capital (2013) - in effect until the effective date of the next cost of service-based rate order"]
[null,null,null,null,null,null,null,null,"Rate Rider for Recovery of Incremental Capital (2013) - in effect until the effective date of the\n next cost of service-based rate order"]
[null,null,null,null,null,null,null,null,"Rate Rider for Recovery of Incremental Capital (2013) (per connection) - in effect until the effective date of \n the next cost of service-based rate order"]
[null,null,null,null,null,null,null,null,"Rate Rider for Recovery of Incremental Capital (2013) (per connection)- in effect until the effective date of the next cost of service-based rate order"]
[null,null,null,null,null,null,null,null,"Rate Rider for Recovery of Incremental Capital Costs"]
[null,null,null,null,null,null,null,null,"Rate Rider for Recovery of Incremental Capital Costs - effective until April 30, 2015"]
[null,null,null,null,null,null,null,null,"Rate Rider for Recovery of Lost Revenue Adjustment Mechanism ( LRAM)/Shared Savings Mechanism (SSM) (2012) - effective until August 31, 2014"]
[null,null,null,null,null,null,null,null,"Rate Rider for Recovery of Lost Revenue Adjustment Mechanism (2013) - effective until December 31, 2014"]
[null,null,null,null,null,null,null,null,"Rate Rider for Recovery of Lost Revenue Adjustment Mechanism (LRAM) - effective until April 30, 2016"]
[null,null,null,null,null,null,null,null,"Rate Rider for Recovery of Lost Revenue Adjustment Mechanism (LRAM) (pre-2011 CDM Activities) - effective until April 30, 2015"]
[null,null,null,null,null,null,null,null,"Rate Rider for Recovery of Lost Revenue Adjustment Mechanism (LRAM) (pre-2011 CDM Activities) (2013) - effective until April 30, 2015"]
[null,null,null,null,null,null,null,null,"Rate Rider for Recovery of Lost Revenue Adjustment Mechanism (LRAM)/Shared Savings"]
[null,null,null,null,null,null,null,null,"Rate Rider for Recovery of Lost Revenue Adjustment Mechanism (LRAM)/Shared Savings Mechanism (SSM) - effective until December 31, 2014 and applicable in the service area excluding the former service area of Clinton Power"]
[null,null,null,null,null,null,null,null,"Rate Rider for Recovery of Lost Revenue Adjustment Mechanism (LRAM)/Shared Savings Mechanism (SSM) - effective until December 31, 2014 and applicable in the service area excluding the former service areas of Clinton Power and West Perth Power"]
[null,null,null,null,null,null,null,null,"Rate Rider for Recovery of Lost Revenue Adjustment Mechanism (LRAM)/Shared Savings Mechanism (SSM) - effective until December 31, 2014 and applicable only in the former service area of Clinton Power"]
[null,null,null,null,null,null,null,null,"Rate Rider for Recovery of Lost Revenue Adjustment Mechanism (LRAM)/Shared Savings Mechanism (SSM) - effective until December 31, 2014 and applicable only in the former service area of West Perth Power"]
[null,null,null,null,null,null,null,null,"Rate Rider for Recovery of Lost Revenue Adjustment Mechanism (LRAM)/Shared Savings Mechanism (SSM) - effective until March 31, 2016"]
[null,null,null,null,null,null,null,null,"Rate Rider for Recovery of Lost Revenue Adjustment Mechanism (LRAM)/Shared Savings Mechanism (SSM) (2012) - effective until August 31, 2014"]
[null,null,null,null,null,null,null,null,"Rate Rider for Recovery of Lost Revenue Adjustment Mechanism (LRAM)/Shared Savings Mechanism (SSM) Recovery - effective until April 30, 2015"]
[null,null,null,null,null,null,null,null,"Rate Rider for Recovery of Lost Revenue Adjustment Mechanism Variance Account (LRAMVA) (2014) - effective until April 30, 2015"]
[null,null,null,null,null,null,null,null,"Rate Rider for Recovery of Residual Historical Smart Meter Costs - effective July 1, 2012 - April 30, 2016"]
[null,null,null,null,null,null,null,null,"Rate Rider for Recovery of Smart Meter Incremental Revenue Requirement - effective until the date of the next cost of service-based rate order"]
[null,null,null,null,null,null,null,null,"Rate Rider for Recovery of Smart Meter Incremental Revenue Requirement - effective until the effective date of the next cost of service-based rate order, or October 31, 2017, whichever occurs earlier"]
[null,null,null,null,null,null,null,null,"Rate Rider for Recovery of Smart Meter Incremental Revenue Requirement - in effect until the effective date of the next cost of service-based rate order"]
[null,null,null,null,null,null,null,null,"Rate Rider for Recovery of Smart Meter Incremental Revenue Requirement - Non-Interval Metered - in effect until the effective date of the next cost of service-based rate order"]
[null,null,null,null,null,null,null,null,"Rate Rider for Recovery of Smart Meter Incremental Revenue Requirements - in effect until the effective date of the next cost of service application"]
[null,null,null,null,null,null,null,null,"Rate Rider for Recovery of Smart Meter Stranded Assets - effective until April 30, 2016"]
[null,null,null,null,null,null,null,null,"Rate Rider for Recovery of Storm Damage Costs - effective until August 31, 2017"]
[null,null,null,null,null,null,null,null,"Rate Rider for Recovery of Stranded Assets - effective until April 30, 2016"]
[null,null,null,null,null,null,null,null,"Rate Rider for Recovery of Stranded Meter Assets - effective July 1, 2012 - April 30, 2016"]
[null,null,null,null,null,null,null,null,"Rate Rider for Recovery of Stranded Meter Assets – effective until April 30, 2015"]
[null,null,null,null,null,null,null,null,"Rate Rider for Recovery of Stranded Meter Assets - effective until April 30, 2016"]
[null,null,null,null,null,null,null,null,"Rate Rider for Recovery of Stranded Meter Assets - effective until April 30, 2017"]
[null,null,null,null,null,null,null,null,"Rate Rider for Recovery of Stranded Meter Assets - effective until August 31, 2015"]
[null,null,null,null,null,null,null,null,"Rate Rider for Recovery of Stranded Meter Assets - effective until August 31, 2017"]
[null,null,null,null,null,null,null,null,"Rate Rider for Recovery of Stranded Meter Assets - effective until December 31, 2014"]
[null,null,null,null,null,null,null,null,"Rate Rider for Recovery of Stranded Meter Assets - effective until December 31, 2015"]
[null,null,null,null,null,null,null,null,"Rate Rider for Recovery of Stranded Meter Assets - effective until June 30, 2016"]
[null,null,null,null,null,null,null,null,"Rate Rider for Recovery of Stranded Meter Assets - effective until March 31, 2016"]
[null,null,null,null,null,null,null,null,"Rate Rider for Recovery of Stranded Meter Assets - effective until May 31, 2014"]
[null,null,null,null,null,null,null,null,"Rate Rider for Reversal of Deferral/Variance Account Disposition (2011) - effective until April 30, 2015"]
[null,null,null,null,null,null,null,null,"Rate Rider for Smart Meter Disposition - effective until April 30, 2016"]
[null,null,null,null,null,null,null,null,"Rate Rider for Smart Meter Incremental Revenue Requirement - in effect until the effective date of the next cost of service-based rate order"]
[null,null,null,null,null,null,null,null,"Rate Rider for Smart Metering Entity Charge - effective until October 31, 2018"]
[null,null,null,null,null,null,null,null,"Rate Rider for Stranded Meter Cost Recovery - effective until April 30, 2017"]
[null,null,null,null,null,null,null,null,"Rate Rider for Tax Change"]
[null,null,null,null,null,null,null,null,"Rate Rider for Tax Change - effective until April 30, 2015"]
[null,null,null,null,null,null,null,null,"Rate Rider for Tax Change (2014) - effective until April 30, 2015"]
[null,null,null,null,null,null,null,null,"Retail Transmission Rate - Line and Transformation Connection Service Rate"]
[null,null,null,null,null,null,null,null,"Retail Transmission Rate - Line and Transformation Connection Service Rate - (less than 1,000 kW)"]
[null,null,null,null,null,null,null,null,"Retail Transmission Rate - Line and Transformation Connection Service Rate - Interval Metered"]
[null,null,null,null,null,null,null,null,"Retail Transmission Rate - Line and Transformation Connection Service Rate - Interval Metered (1,000 to 4,999 kW)"]
[null,null,null,null,null,null,null,null,"Retail Transmission Rate - Line and Transformation Connection Service Rate - Interval Metered (less than 1,000 kW)"]
[null,null,null,null,null,null,null,null,"Retail Transmission Rate - Line and Transformation Connection Service Rate - Interval Metered < 1,000 kW"]
[null,null,null,null,null,null,null,null,"Retail Transmission Rate - Line and Transformation Connection Service Rate - Interval Metered > 1,000 kW"]
[null,null,null,null,null,null,null,null,"Retail Transmission Rate - Line and Transformation Connection Service Rate FOR ALL SERVICE AREAS EXCEPT HENSALL"]
[null,null,null,null,null,null,null,null,"Retail Transmission Rate - Line Connection Service Rate"]
[null,null,null,null,null,null,null,null,"Retail Transmission Rate - Network Service Rate"]
[null,null,null,null,null,null,null,null,"Retail Transmission Rate - Network Service Rate - (less than 1,000 kW)"]
[null,null,null,null,null,null,null,null,"Retail Transmission Rate - Network Service Rate - Interval Metered"]
[null,null,null,null,null,null,null,null,"Retail Transmission Rate - Network Service Rate - Interval Metered (1,000 to 4,999 kW)"]
[null,null,null,null,null,null,null,null,"Retail Transmission Rate - Network Service Rate - Interval Metered (less than 1,000 kW)"]
[null,null,null,null,null,null,null,null,"Retail Transmission Rate - Network Service Rate - Interval Metered > 1,000 kW"]
[null,null,null,null,null,null,null,null,"Retail Transmission Rate - Transformation Connection Service Rate"]
[null,null,null,null,null,null,null,null,"Rider for Global Adjustment Sub-Account Disposition (2012) - effective until April 30, 2016 Applicable only for Non-RPP Customers"]
[null,null,null,null,null,null,null,null,"Rural or Remote Electricity Rate Protection Charge (RRRP)"]
[null,null,null,null,null,null,null,null,"Sentinel lights (dusk-to-dawn) connected to unmetered wires will have a flat rate monthly energy charge added to the regular customer bill. Further servicing details are available in the distributor’s Conditions of Service."]
[null,null,null,null,null,null,null,null,"Service Charge"]
[null,null,null,null,null,null,null,null,"Service Charge (per connection)"]
[null,null,null,null,null,null,null,null,"Service Charge (per customer)"]
[null,null,null,null,null,null,null,null,"Service Charge (per light)"]
[null,null,null,null,null,null,null,null,"Smart Grid Funding Adder (2014) - in effect until December 31, 2014"]
[null,null,null,null,null,null,null,null,"Smart Meter Disposition Rider"]
[null,null,null,null,null,null,null,null,"Smart Meter Entity Charge"]
[null,null,null,null,null,null,null,null,"Smart Meter Incremental Revenue Requirement Rate Rider"]
[null,null,null,null,null,null,null,null,"Standard Supply Service - Administrative Charge (if applicable)"]
[null,null,null,null,null,null,null,null,"Standby Charge - for a month where standby power is not provided, the charge is based on the applicable General Service 50 to 4,999 kW or Large Use Distribution Volumetric Charge applied to the contracted amount (e.g. Nameplate rating of generating facility)."]
[null,null,null,null,null,null,null,null,"Standby Charge - for a month where standby power is not provided. The charge is applied to the amount of reserved load transfer capacity contracted or the amount of monthly peak load displaced by a generating facility"]
[null,null,null,null,null,null,null,null,"Standby Charge - for a month where standby power is not provided. The charge is applied to the contracted amount (e.g. nameplate rating of the generation facility)."]
[null,null,null,null,null,null,null,null,"Wholesale Market Service Rate"]

{"sheet":"lists2","index":37,"n_rows":187,"n_cols":4,"rows_kept":187,"cut":false,"hidden":true,"merged":[[168,4,168,7],[170,0,170,1],[170,4,170,5],[171,0,171,1],[148,0,148,1],[149,0,149,1],[150,0,150,1],[151,0,151,1],[153,0,153,1],[154,0,154,1],[155,0,155,1],[156,0,156,1],[152,0,152,1],[105,0,105,1],[109,0,109,1],[137,0,137,1],[138,0,138,1],[139,0,139,1],[140,0,140,1],[141,0,141,1],[142,0,142,1],[143,0,143,1],[129,0,129,1],[130,0,130,1],[132,0,132,1],[133,0,133,1],[131,0,131,1],[128,0,128,1],[136,0,136,1],[92,0,92,1],[93,0,93,1],[98,0,98,1],[99,0,99,1],[100,0,100,1],[101,0,101,1],[102,0,102,1],[103,0,103,1],[104,0,104,1],[83,0,83,1],[84,0,84,1],[85,0,85,1],[86,0,86,1],[87,0,87,1],[88,0,88,1],[89,0,89,1],[90,0,90,1],[91,0,91,1],[74,0,74,1],[75,0,75,1],[76,0,76,1],[77,0,77,1],[78,0,78,1],[79,0,79,1],[80,0,80,1],[81,0,81,1],[82,0,82,1],[36,0,36,1],[46,0,46,1],[65,0,65,3],[65,4,65,7],[67,0,67,3],[67,4,67,7],[71,0,71,1],[72,0,72,1],[73,0,73,1],[21,0,21,1],[22,0,22,1],[23,0,23,1],[24,0,24,1],[25,0,25,1],[26,0,26,1],[27,0,27,1],[28,0,28,1],[29,0,29,1],[12,0,12,1],[13,0,13,1],[14,0,14,1],[15,0,15,1],[16,0,16,1],[17,0,17,1],[18,0,18,1],[19,0,19,1],[20,0,20,1],[33,0,33,1],[34,0,34,1],[35,0,35,1],[54,0,54,1],[190,0,190,1],[110,0,110,1],[111,0,111,1],[112,0,112,1],[113,0,113,1],[114,0,114,1],[115,0,115,1],[116,0,116,1],[117,0,117,1],[118,0,118,1],[119,0,119,1],[120,0,120,1],[121,0,121,1],[122,0,122,1],[123,0,123,1],[124,0,124,1],[55,0,55,1],[56,0,56,1],[57,0,57,1],[63,0,63,3],[191,0,191,1],[144,0,144,1],[145,0,145,1],[146,0,146,1],[147,0,147,1],[168,0,168,3],[178,0,178,1],[179,0,179,1],[180,0,180,1],[175,0,175,1],[176,0,176,1],[177,0,177,1],[172,0,172,1],[173,0,173,1],[174,0,174,1],[192,0,192,1],[193,0,193,1],[194,0,194,1],[186,0,186,3],[186,4,186,7],[160,0,160,3],[160,4,160,7],[161,0,161,3],[161,4,161,7],[162,0,162,3],[162,4,162,7],[163,0,163,3],[163,4,163,7],[164,0,164,3],[164,4,164,7],[165,0,165,3],[165,4,165,7],[166,0,166,3],[166,4,166,7],[167,0,167,3],[181,0,181,1],[182,0,182,1],[189,0,189,1],[167,4,167,7],[0,0,0,3],[48,0,48,5],[94,0,94,1],[95,0,95,1],[96,0,96,1],[97,0,97,1],[125,0,125,1],[126,0,126,1],[127,0,127,1],[2,0,2,3],[5,0,5,3],[6,0,6,3],[7,0,7,3],[8,0,8,3],[37,0,37,1],[38,0,38,1],[39,0,39,1],[40,0,40,1],[41,0,41,1],[45,0,45,1],[47,0,47,1],[30,0,30,1],[31,0,31,1],[32,0,32,1]]}
["RESIDENTIAL Service Classification"]
[]
[]
["APPLICATION"]
[]
[]
[]
[]
[]
[]
["MONTHLY RATES AND CHARGES - Delivery Component"]
[]
[]
[]
[]
[]
[]
[]
[]
[]
[]
[]
[]
[]
[]
[]
[]
[]
[]
[]
[]
[]
[]
[]
[]
[]
[]
[]
[]
[]
[]
[]
[]
["MONTHLY RATES AND CHARGES - Regulatory Component"]
[]
["Wholesale Market Service Rate",null,"$/kWh",4.4000000000000003E-3]
["Rural Rate Protection Charge",null,"$/kWh",1.1000000000000001E-3]
["Standard Supply Service - Administrative Charge (if applicable)",null,"$",0.25]
[]
[]
[]
[]
["ALLOWANCES"]
[]
["Transformer Allowance for Ownership - per kW of billing demand/month"]
[]
[]
["Primary Metering Allowance for transformer losses – applied to measured demand and energy"]
[]
["SPECIFIC SERVICE CHARGES"]
[]
["APPLICATION"]
[]
["The application of these rates and charges shall be in accordance with the Licence of the Distributor and any Code or Order of the Board, and amendments thereto as approved by the Board, which may be applicable to the administration of this schedule."]
[]
["No charges to meet the costs of any work or service done or furnished for the purpose of the distribution of electricity shall be made except as permitted by this schedule, unless required by the Distributor’s Licence or a Code or Order of the Board, and amendments thereto as approved by the Board, or as specified herein."]
[]
["It should be noted that this schedule does not list any charges, assessments or credits that are required by law to be invoiced by a distributor and that are not subject to Board approval, such as the Debt Retirement Charge, the Global Adjustment, the Ontario Clean Energy Benefit and the HST."]
[]
["Customer Administration"]
[]
[]
[]
[]
[]
[]
[]
[]
[]
[]
[]
[]
[]
[]
[]
[]
[]
[]
[]
[]
[]
[]
[]
[]
[]
[]
[]
[]
[]
[]
[]
[]
[]
[]
[]
[]
[]
["Non-Payment of Account"]
[]
[]
[]
[]
[]
[]
[]
[]
[]
[]
[]
[]
[]
[]
[]
[]
[]
[]
[]
[]
[]
[]
[]
[]
[]
[]
[]
[]
[]
[]
[]
[]
[]
[]
[]
[]
[]
[]
[]
[]
[]
[]
[]
[]
[]
[]
[]
[]
[]
[]
["RETAIL SERVICE CHARGES (if applicable)"]
[]
["The application of these rates and charges shall be in accordance with the Licence of the Distributor and any Code or Order of the Board, and amendments thereto as approved by the Board, which may be applicable to the administration of this schedule."]
[]
["No rates and charges for the distribution of electricity and charges to meet the costs of any work or service done or furnished for the purpose of the distribution of electricity shall be made except as permitted by this schedule, unless required by the Distributor’s Licence or a Code or Order of the Board, and amendments thereto as approved by the Board, or as specified herein."]
[]
["Unless specifically noted, this schedule does not contain any charges for the electricity commodity, be it under the Regulated Price Plan, a contract with a retailer or the wholesale market price, as applicable."]
[]
["It should be noted that this schedule does not list any charges, assessments or credits that are required by law to be invoiced by a distributor and that are not subject to Board approval, such as the Debt Retirement Charge, the Global Adjustment, the Ontario Clean Energy Benefit and the HST."]
[]
["Retail Service Charges refer to services provided by a distributor to retailers or customers related to the supply of competitive electricity."]
[]
["One-time charge, per retailer, to establish the service agreement between the distributor and the retailer",null,"$",100]
["Monthly Fixed Charge, per retailer",null,"$",20]
["Monthly Variable Charge, per customer, per retailer",null,"$/cust.",0.5]
["Distributor-consolidated billing monthly charge, per customer, per retailer",null,"$/cust.",0.3]
["Retailer-consolidated billing monthly credit, per customer, per retailer",null,"$/cust.",-0.3]
["Service Transaction Requests (STR) "]
["Request fee, per request, applied to the requesting party",null,"$",0.25]
["Processing fee, per request, applied to the requesting party",null,"$",0.5]
["Request for customer information as outlined in Section 10.6.3 and Chapter 11 of the Retail"]
["Settlement Code directly to retailers and customers, if not delivered electronically through the"]
["Electronic Business Transaction (EBT) system, applied to the requesting party "]
["Up to twice a year",null,"$","no charge"]
["More than twice a year, per request (plus incremental delivery costs)",null,"$",2]
[]
["LOSS FACTORS"]
[]
["If the distributor is not capable of prorating changed loss factors jointly with distribution rates, the revised loss factors will be implemented upon the first subsequent billing for each billing cycle."]

{"sheet":"Sheet19","index":38,"n_rows":72,"n_cols":9,"rows_kept":72,"cut":false,"hidden":true,"merged":[]}
[null,"CGAAP","CGAAP","CGAAP","MIFRS","USGAAP","ASPE","ASPE","ASPE"]
[null,"N/A",2012,2013,null,null,"N/A",2012,2013]
["LDC Info","x","x","x","x","x","x","x","x"]
["Table of Contents","x","x","x","x","x","x","x","x"]
["COS Flowchart","x","x","x","x","x","x","x","x"]
["List of Key References","x","x","x","x","x","x","x","x"]
["App.2-AA_Capital Projects","x","x","x","x","x","x","x","x"]
["App.2-AB_Capital Expenditures","x","x","x","x","x","x","x","x"]
["App.2-BA1_Fix Asset Cont.CGAAP","x","x","x","n","x","x","x","x"]
["App.2-BA2_Fix Asset Cont.MIFRS","n","n","n","x","n","n","n","n"]
["Appendix 2-BB Service Life Comp","x","x","x","x","x","x","x","x"]
["Instruction for App. 2-C MIFRS","n","n","n","x","n","n","n","n"]
["App.2-CA_CGAAP_DepExp_2011","n","n","n","x","n","n","n","n"]
["App.2-CB_MIFRS_DepExp_2011","n","n","n","x","n","n","n","n"]
["App.2-CC_MIFRS_DepExp_2012","n","n","n","x","n","n","n","n"]
["App.2-CD_MIFRS_DepExp_2013","n","n","n","x","n","n","n","n"]
["App.2-CE_MIFRS_DepExp_2014","n","n","n","x","n","n","n","n"]
["App.2-CF_CGAAP_DepExp_2012","n","n","n","x","n","n","n","n"]
["App.2-CG_MIFRS_DepExp_2012","n","n","n","x","n","n","n","n"]
["App.2-CH_MIFRS_DepExp_2013","n","n","n","x","n","n","n","n"]
["App.2-CI_MIFRS_DepExp_2014","n","n","n","x","n","n","n","n"]
["App.2-CJ_CGAAP_DepExp_2012","n","n","n","x","n","n","n","n"]
["App.2-CK_CGAAP_DepExp_2013","n","n","n","x","n","n","n","n"]
["App.2-CL_MIFRS_DepExp_2013","n","n","n","x","n","n","n","n"]
["App.2-CM_MIFRS_DepExp_2014","n","n","n","x","n","n","n","n"]
["Instruction for App. 2-C CGAAP","x","x","x","n","n","x","x","x"]
["App.2-CN_OldCGAAP_DepExp_2012","x","x","n","n","n","x","x","n"]
["App.2-CO_NewCGAAP_DepExp_2012","x","x","n","n","n","x","x","n"]
["App.2-CP_NewCGAAP_DepExp_2013","x","x","n","n","n","x","x","n"]
["App.2-CQ NewCGAAP_DepExp_2014","x","x","n","n","n","x","x","n"]
["App.2-CR_OldCGAAP_DepExp_2012","x","n","x","n","n","x","n","x"]
["App.2-CS_OldCGAAP_DepExp_2013","x","n","x","n","n","x","n","x"]
["App.2-CT_NewCGAAP_DepExp_2013","x","n","x","n","n","x","n","x"]
["App.2-CU_NewCGAAP_DepExp_2014","x","n","x","n","n","x","n","x"]
["App.2-CV_USGAAP_DepExp","n","n","n","n","x","n","n","n"]
["App.2-DA_Overhead","n","n","n","x","n","n","n","n"]
["App.2-DB_Overhead","x","x","x","n","n","x","x","x"]
["App.2-EA_PP&E Deferral Account","n","n","n","x","x","n","n","n"]
["App.2-EB_PP&E Deferral Account","n","n","n","x","x","n","n","n"]
["App.2-EC_PP&E Deferral Account","n","n","n","x","x","n","n","n"]
["App.2-ED_Account 1576 (2012)","x","x","n","x","x","x","x","n"]
["App.2-EE_Account 1576 (2013)","x","n","x","x","x","x","n","x"]
["App.2-FA Proposed REG Invest.","o","o","o","o","o","o","o","o"]
["App.2-FB Calc of REG Improvemnt","o","o","o","o","o","o","o","o"]
["App.2-FC Calc of REG Expansion","o","o","o","o","o","o","o","o"]
["App.2-G SQI","x","x","x","x","x","x","x","x"]
["App.2-H_Other_Oper_Rev","x","x","x","x","x","x","x","x"]
["App.2-I LF_CDM_WF","x","x","x","x","x","x","x","x"]
["App.2-JA_OM&A_Summary_Analys","x","x","x","x","x","x","x","x"]
["App.2-JB_OM&A_Cost _Drivers","x","x","x","x","x","x","x","x"]
["App.2-JC_OMA Programs","x","x","x","x","x","x","x","x"]
["App.2-K_Employee Costs","x","x","x","x","x","x","x","x"]
["App.2-L_OM&A_per_Cust_FTEE","x","x","x","x","x","x","x","x"]
["App.2-M_Regulatory_Costs","x","x","x","x","x","x","x","x"]
["App.2-N_Corp_Cost_Allocation","x","x","x","x","x","x","x","x"]
["App.2-OA Capital Structure","x","x","x","x","x","x","x","x"]
["App.2-OB_Debt Instruments","x","x","x","x","x","x","x","x"]
["App.2-P_Cost_Allocation","x","x","x","x","x","x","x","x"]
["App.2-Q_Cost of Serv. Emb. Dx","e","e","e","e","e","e","e","e"]
["App.2-R_Loss Factors","x","x","x","x","x","x","x","x"]
["App.2-S_Stranded Meters","x","x","x","x","x","x","x","x"]
["App.2-TA_1592_Tax_Variance","x","x","x","x","x","x","x","x"]
["App.2-TB_1592_HST-OVAT","x","x","x","x","x","x","x","x"]
["App.2-U_IFRS Transition Costs","x","x","x","x","x","x","x","x"]
["App.2-V_Rev_Reconciliation","x","x","x","x","x","x","x","x"]
["App.2-W_Bill Impacts","x","x","x","x","x","x","x","x"]
["App.2-YA_MIFRS Summary Impacts","n","n","n","x","n","n","n","n"]
["App. 2-YB_CGAAP Summary Impacts","x","x","x","n","n","x","x","x"]
["App. 2-Z_Tariff","x","x","x","x","x","x","x","x"]
["lists","n","n","n","n","n","n","n","n"]
["lists2","n","n","n","n","n","n","n","n"]
["Sheet19","n","n","n","n","n","n","n","n"]

{"sheet":"Sheet1","index":39,"n_rows":0,"n_cols":0,"rows_kept":0,"cut":false,"hidden":true,"merged":[]}